{"text_format":"1","workbook":"xlsx","n_sheets":33,"sheets":["Quick Start Guide","Readme","Dashboard","Comparison","MarketAnalysis","Assumptions","Lists","Physical Inputs","Physical Outputs","Basic Financial","Advanced Financial","Fixed Parameters","Calculations","ROI Scenario","Green Infrastructure","Trip Generation","Gap Financing Options","Gap Financing Definitions","Hotel","Residential Owner","Residential Rental","Retail","Office","Industrial","Commercial Parking","Mixed-Use Summary","Building Envelope Calculator","Prototype Modeler","Development Costs","Scenario Spreadsheet","Metric Translation","PRINT_SUMMARY","ChangeLog"],"not_rendered":{"charts":19,"images":5,"macros":1,"external_links":0,"defined_names":594,"comments":3,"pivot_tables":0},"unopened":[],"bounds":{"document_bytes":16777216,"sheet_cells":100000,"rows_first":2000,"rows_last":500,"rows_between":2000,"halvings":0,"cell_chars":16384,"cell_head_chars":4096},"cells_cut":0,"cells_raw":0,"read":"whole","date_system":"1900"}

{"sheet":"Quick Start Guide","index":0,"n_rows":48,"n_cols":4,"rows_kept":48,"cut":false,"hidden":true,"merged":[[47,1,48,5],[44,1,44,5],[12,1,12,5],[13,1,13,5],[29,1,29,5],[16,1,16,5],[21,1,21,5],[22,1,22,5],[23,1,23,5],[26,1,26,5]]}
[]
[]
[]
[]
[]
[]
[]
[]
[null,"Envision Tomorrow™ Return on Investment Model"]
[null,{"$f":"\"Version \"&ChangeLog!C43&\", Updated \"&ChangeLog!D43","v":"Version v4.04, Updated 1/24/19"}]
[]
[null,"What is the ROI Model?"]
[null,"Do you want to examine redevelopment potential in your city, town, or region? Do you want to study the relationship between land use regulations and the current development market?"]
[null,"The ROI Model is a versatile, easy-to-use tool that can be used to test the physical and financial feasibility of a proposed development or existing development regulations. The ROI Model considers a range of factors including parking, height and use requirements, costs associated with construction, fees, rents and subsidies. The ROI Model allows you to model single-use and mixed-use buildings at a range of scales."]
[]
[null,"Quick Start Guide"]
[null,"A few quick and easy steps will get you started at modeling prototype buildings and testing land use regulations."]
[]
[null,"1. Save this file with a new name. "]
[]
[null,"2. Gather data for use in the ROI Model."]
[null,"- Existing land use regulations (e.g. parking requirements, height limits, landscaping, setbacks)"]
[null,"- Local estimates for construction costs, rents, sales prices, and land values"]
[null,"- Local tax rates"]
[]
[null,"3. Select units of measurement and currency."]
[null,"The ROI Model currently works in metric and imperial units of measurement and up to three different currencies.  When toggling between currencies or units, you will be asked to reset the model's default values or proceed with values as entered."]
[]
[null,"4. Work through the Physical and Financial tabs."]
[null,"Using the data you have gathered, enter data into the pink Input Cells of each Input Tab in the ROI Model. If you have questions, the Envision Tomorrow user manual as well as embedded comments (hover over cells with a red corner for more information) are available to provide answers to common questions."]
[]
[null,null,"TAB Color Definition"]
[null,null,"Input Tab"]
[null,null,"Output Tab"]
[null,null,"Reference Tab"]
[]
[null,null,"CELL Color Definition"]
[null,null,"Input Cell"]
[null,null,"Header Cell"]
[null,null,"Subheader Cell"]
[null,null,"Information cell","[Click for info ◊]"]
[null,null,"Output Cell","[white]"]
[]
[null,"5. Make adjustments to create a building that meets your goals."]
[null,"Completing the ROI Model is an iterative learning process, and you will likely go through several iterations of each prototype building in order to test a variety of assumptions about market conditions, achievable rent, desired building types and sizes, ownership schemes, financing, and regulatory conditions, among many other factors. It is helpful to have a goal or a question to guide your testing."]
[null,"What building types are feasible in the current market?"]
[null,"What would X (e.g. rent, land cost, financing) need to be in order to achieve a desired building type?"]
[null,"If certain regulatory constraints (e.g. height restrictions, high parking requirements or setbacks) were relaxed or removed, what new building types become possible?"]

{"sheet":"Readme","index":1,"n_rows":38,"n_cols":10,"rows_kept":38,"cut":false,"hidden":false,"merged":[[31,3,31,7],[17,3,17,6],[19,1,19,2],[0,3,2,9],[4,1,14,11]]}
[null,null,null,"                       MIDDLE HOUSING PRO-FORMA"]
[]
[]
[]
[null,"DRAFT Middle Housing Pro-Forma Tool\nMay 17th, 2023\n\nThis pro-forma tool is being developed as part of the Middle Housing Objective Design + Development Standards Toolkit.  The pro-forma is still in draft form and has not yet been reviewed in full by the Dept. of Commerce.  It is intended to allow users to assess financial feasibility of building prototypes included in the \"Optional Chapters\" of the ODDS Toolkit.  Users may find it helpful to reference the tables below to better understand which building types relate to each \"Placetype\" and \"Overlay Zone\" from the ODDS Toolkit.\n\nUse the \"Dashboard\" page to select building prototypes and modify them using orange cells.  The \"Comparison\" tab provides a comparison between the selected prototype and a detached home.  The \"Assumptions\" tab exposes key pro-forma assumptions, many of which are editable.\n\nQuestions or comments regarding this tool?  Contact Mary Reinbold:  mary.reinbold@commerce.wa.gov"]
[]
[]
[]
[]
[]
[]
[]
[]
[]
[]
[]
[]
[null,null,null,"Relationship of Placetypes ot Toolkit Overlay Zones"]
[]
[null,"Placetypes",null,"NRO.S1","NRO.S2","NRO.M1","NRO.M2"]
[null,"City Center-Adjacent"]
[null,"Main Street-Adjacent Neighborhood"]
[null,"Corridor-Adjacent Neighborhood"]
[null,"Neighborhood Node-Adjacent"]
[null,"Mixed Neighborhood Small Footprint"]
[null,"Mixed Neighborhood Medium Footprint"]
[null,"Mixed Neighborhood Large Footprint"]
[null,"Small-Lot Detached Neighborhood"]
[null,"Large-Lot Detached Neighborhood"]
[]
[]
[null,null,null,"Relationship of Toolkit Overlay Zones to Middle Housing Building Types (Table 4.020.A)"]
[]
[null,"Zones","Duplex","Cottage Housing","Triplex","Fourplex","Side Court","Townhouse","Courtyard","Multiplex"]
[null,"NRO.S1"]
[null,"NRO.S2"]
[null,"NRO.M1"]
[null,"NRO.M2"]

{"sheet":"Dashboard","index":2,"n_rows":38,"n_cols":6,"rows_kept":38,"cut":false,"hidden":false,"merged":[[0,3,2,6],[5,5,5,9],[10,11,10,12],[13,11,13,12],[25,5,25,9],[17,11,17,12],[5,11,5,12],[11,11,11,12],[14,11,14,12],[7,5,10,9],[12,5,13,9]]}
[null,null,null,"MIDDLE HOUSING PRO-FORMA"]
[]
[]
[]
[]
[null,"1. Project Location & Type",null,null,null,"Achievable Rents and Sales Prices"]
[null,"County","King"]
[null,"City","Shoreline",null,null,{"$f":"\"In \"&C8&\", the average unit in this project could \"&IF(C12=\"For Rent\",\"rent \",\"sell \")&IF(VLOOKUP($C$8,Assumptions!$A$98:$F$184,IF($C$12=\"For Rent\",3,5),FALSE)=VLOOKUP($C$8,Assumptions!$A$98:$F$184,IF($C$12=\"For Rent\",4,6),FALSE),\"for around:\",\"for between:\")","v":"In Shoreline, the average unit in this project could sell for between:"}]
[null,"Placetype","Large_Lot_Detached_Neighborhood"]
[null,"Toolkit Zone","NRO.S.1"]
[null,"Housing Prototype","Duplex"]
[null,"Project Type","For Sale"]
[null,null,null,null,null,{"$f":"IF(VLOOKUP($C$8,Assumptions!$A$98:$F$184,IF($C$12=\"For Rent\",4,6),FALSE)=VLOOKUP($C$8,Assumptions!$A$98:$F$184,IF($C$12=\"For Rent\",3,5),FALSE),TEXT(CEILING(VLOOKUP($C$8,Assumptions!$A$98:$F$184,IF($C$12=\"For Rent\",4,6),FALSE)*C19,10),\"$#,##0\"),TEXT(CEILING(VLOOKUP($C$8,Assumptions!$A$98:$F$184,IF($C$12=\"For Rent\",3,5),FALSE)*C19,10),\"$#,##0\")&\" and \"&TEXT(CEILING(VLOOKUP($C$8,Assumptions!$A$98:$F$184,IF($C$12=\"For Rent\",4,6),FALSE)*C19,10),\"$#,##0\"))","v":"$677,260 and $892,750"}]
[null,"2. Project Characteristics"]
[null,"Attribute","Prototype Value","Override"]
[null,"Lot Width",{"$f":"'Physical Inputs'!B27","v":45}]
[null,"Lot Depth",{"$f":"'Physical Inputs'!B29","v":100}]
[null,"Floors",{"$f":"PI_BHeight","v":2}]
[null,"Average Unit Size",{"$f":"Lists!I27","v":1600}]
[null,"Number of Units",{"$f":"'Physical Inputs'!B2","v":1.9999999999999993}]
[null,"Required Parking (Spaces/Unit)",{"$f":"Lists!H27","v":1}]
[null,"Impact Fees (% of Hard Costs)",{"$f":"Assumptions!B16","v":0.05}]
[null,"Development Duration (Months)",{"$f":"Lists!M27","v":9}]
[null,"Land Cost ($/Sqft)",{"$f":"Lists!F27","v":40}]
[]
[null,null,null,null,null,"Project Return vs Attainability"]
[]
[null,"3. Project Feasibility"]
[null,null,{"$f":"IF(C12=\"For Sale\",\"Sales Price Per Sqft\",\"Avg. Monthly Rent Per Sqft\")","v":"Sales Price Per Sqft"},{"$f":"BF_AvgRent","v":459.5625}]
[null,null,{"$f":"IF(C12=\"For Sale\",\"Sales Price\",\"Avg. Monthly Rent\")","v":"Sales Price"},{"$f":"IF(C12=\"For Sale\",'Basic Financial'!D55,BF_AvgRent*PI_AvgUnitsize)","v":735300}]
[null,null,{"$f":"IF(C12=\"For Sale\",\"Project Rate of Return\",\"Project Internal Rate of Return\")","v":"Project Rate of Return"},{"$f":"Lists!G27","v":0.19735438905370878}]
[]
[]
[null,"Project Attainability"]
[null,"Financial Surplus (Gap)",{"$f":"IF(C12=\"For Sale\",'Residential Owner'!D25,'Mixed-Use Summary'!N127)","v":-3249.3600000001024}]
[null,"Surplus (Gap) Per Unit",{"$f":"C35/'Physical Outputs'!D39","v":-1624.6800000000517}]
[null,"% of AMI",{"$f":"IF(C12=\"For Sale\",Dashboard!D30/Lists!B62,Dashboard!D30/Lists!B61)","v":1.4727711619537536}]
[null,"Household Type (Ppl/Hhld)",{"$f":"Lists!B59","v":4}]

{"sheet":"Comparison","index":3,"n_rows":27,"n_cols":6,"rows_kept":27,"cut":false,"hidden":false,"merged":[[16,2,16,8],[6,3,7,3],[6,4,7,4],[6,5,7,8],[11,5,11,8],[10,5,10,8],[9,5,9,8],[8,5,8,8],[9,11,9,12],[0,3,2,6],[5,11,5,12],[8,11,8,12],[11,11,11,12],[13,11,13,12],[14,11,14,12],[12,5,12,8],[13,5,13,8],[14,5,14,8]]}
[null,null,null,"MIDDLE HOUSING PRO-FORMA"]
[]
[]
[]
[]
[]
[null,null,null,{"$f":"Assumptions!B32","v":"Detached Home"},{"$f":"Dashboard!C11","v":"Duplex"},"Change"]
[]
[null,null,"Lot Size",{"$f":"Assumptions!B48*Assumptions!B49","v":4000},{"$f":"Dashboard!C16*Dashboard!C17","v":4500},{"$f":"(E9-D9)/D9","v":0.125}]
[null,null,"Lot Price",{"$f":"D9*Dashboard!C24","v":160000},{"$f":"E9*Dashboard!C24","v":180000},{"$f":"(E10-D10)/D10","v":0.125}]
[null,null,"Number of Units",{"$f":"Assumptions!B34","v":1},{"$f":"Dashboard!C20","v":1.9999999999999993},{"$f":"(E11-D11)/D11","v":0.99999999999999933}]
[null,null,"Average Unit Size",{"$f":"Assumptions!B44","v":2500},{"$f":"Dashboard!C19","v":1600},{"$f":"(E12-D12)/D12","v":-0.36}]
[null,null,{"$f":"IF(Dashboard!C12=\"For Sale\",\"Avg. Sale Price / Unit\",\"Avg. Rent / Unit\")","v":"Avg. Sale Price / Unit"},{"$f":"IF(Dashboard!C12=\"For Rent\",8936,1421438)","v":1421438},{"$f":"Dashboard!D30","v":735300},{"$f":"(E13-D13)/D13","v":-0.48270694887853005}]
[null,null,{"$f":"\"% of \"&CountyLookup&\" Co. AMI\"","v":"% of King Co. AMI"},{"$f":"IF(Dashboard!C12=\"For Sale\",((D27+(D26*Dashboard!C24))*Assumptions!B40)/SUMIF(Table1520[Table 12: Affordable Home Price by Household Size],CountyLookup,Table1520[4]),((E27+(E26*Dashboard!C24))*Assumptions!B44)/SUMIF(Table17[Table 11: Affordable Monthly Mortgage or Rent Payment by Household Size],CountyLookup,Table17[4]))","v":2.8502489703520144},{"$f":"Dashboard!C37","v":1.4727711619537536},{"$f":"E14-D14","v":-1.3774778083982608}]
[null,null,{"$f":"Dashboard!C31","v":"Project Rate of Return"},{"$f":"IF(Dashboard!C12=\"For Sale\",0.2,0.12)","v":0.2},{"$f":"Dashboard!D31","v":0.19735438905370878},{"$f":"E15-D15","v":-2.6456109462912325E-3}]
[]
[null,null,{"$f":"\"Project Return and Attainability: \"&Assumptions!B31&\" v.s. \"&Dashboard!C11","v":"Project Return and Attainability: Detached Home v.s. Duplex"}]
[]
[]
[]
[]
[]
[]
[]
[null,null,null,"Sale","Rent"]
[null,null,"Slope",2.0941443086816727,1.3155530546623797E-2]
[null,null,"Y-Intercept",485.44365326902465,3.0406405144694535]

{"sheet":"MarketAnalysis","index":4,"n_rows":32,"n_cols":13,"rows_kept":32,"cut":false,"hidden":true,"merged":[]}
["King County","Sales Typology","Rental Typology","Median Price PSF","Asking Rent","Land Cost","Development Activity - Sales","Sales Prices","Price Growth","Development Activity - Rental","Occupancy Rate","Rent Growth","Asking Rents"]
["Bellevue","Strong","Strong",607.62129049999896,2.97,{"$f":"VLOOKUP(Table10[[#This Row],[Sales Prices]],Table5[],2,FALSE)","v":85},"High","High","High","Mid-High","Mid-High","Mid-High","High"]
["Bothell","Strong","Strong",469.02462630000002,2.46,{"$f":"VLOOKUP(Table10[[#This Row],[Sales Prices]],Table5[],2,FALSE)","v":45},"High","Mid-High","High","High","Mid-High","Mid-High","Mid-High"]
["Burien","Transitional","Emerging",416.66666670000001,1.93,{"$f":"VLOOKUP(Table10[[#This Row],[Sales Prices]],Table5[],2,FALSE)","v":45},"Mid-High","Mid-High","High","Mid-High","High","High","Low"]
["Kenmore","Transitional","Strong",460.59365400000002,2.46,{"$f":"VLOOKUP(Table10[[#This Row],[Sales Prices]],Table5[],2,FALSE)","v":45},"Low-Mid","Mid-High","High","High","Mid-High","Mid-High","Mid-High"]
["Milton","Transitional","Emerging",324.24731159999902,2.0699999999999998,{"$f":"VLOOKUP(Table10[[#This Row],[Sales Prices]],Table5[],2,FALSE)","v":25},"High","Low-Mid","High","Low","High","High","Low-Mid"]
["Newcastle","Strong","Strong",584.79532159999906,2.97,{"$f":"VLOOKUP(Table10[[#This Row],[Sales Prices]],Table5[],2,FALSE)","v":85},"Mid-High","High","High","Mid-High","High","High","High"]
["Redmond","Strong","Emerging",615.76354679999895,2.85,{"$f":"VLOOKUP(Table10[[#This Row],[Sales Prices]],Table5[],2,FALSE)","v":85},"Mid-High","High","Mid-High","High","Low","Mid-High","High"]
["Renton","Strong","Strong",445.16129030000002,2.52,{"$f":"VLOOKUP(Table10[[#This Row],[Sales Prices]],Table5[],2,FALSE)","v":45},"High","Mid-High","High","Low-Mid","High","High","Mid-High"]
["Seattle","Strong","Emerging",750,3.66,{"$f":"VLOOKUP(Table10[[#This Row],[Sales Prices]],Table5[],2,FALSE)","v":85},"High","High","High","High","Low-Mid","Low-Mid","High"]
["Shoreline","Strong","Emerging",502.90697669999901,2.27,{"$f":"VLOOKUP(Table10[[#This Row],[Sales Prices]],Table5[],2,FALSE)","v":85},"High","High","High","High","Mid-High","Mid-High","Low-Mid"]
["Tukwila","Transitional","Emerging",380.11695909999901,2.35,{"$f":"VLOOKUP(Table10[[#This Row],[Sales Prices]],Table5[],2,FALSE)","v":45},"Mid-High","Mid-High","High","Mid-High","High","High","Mid-High"]
[]
["Pierce County","Sales Typology","Rental Typology","Median Price PSF","Asking Rent","Land Cost","Development Activity - Sales","Sales Prices","Price Growth","Development Activity - Rental","Occupancy Rate","Rent Growth","Asking Rents"]
["Eatonville","Static","Emerging",298.18425039999897,1.55,{"$f":"VLOOKUP(Table11[[#This Row],[Sales Prices]],Table5[],3,FALSE)","v":10},"Low","Low","Low","Low","High","Mid-High","Low"]
["Edgewood","Transitional","Static",310.79234969999902,1.85,{"$f":"VLOOKUP(Table11[[#This Row],[Sales Prices]],Table5[],3,FALSE)","v":20},"Low-Mid","Low-Mid","High","Low","Low-Mid","Mid-High","Low"]
["Enumclaw","Emerging","Emerging",333.00685600000003,2.33,{"$f":"VLOOKUP(Table11[[#This Row],[Sales Prices]],Table5[],3,FALSE)","v":20},"Low","Low-Mid","Low","Mid-High","Low-Mid","High","Low-Mid"]
["Fife","Transitional","Emerging",278.89447239999902,1.89,{"$f":"VLOOKUP(Table11[[#This Row],[Sales Prices]],Table5[],3,FALSE)","v":10},"High","Low","High","High","Mid-High","Low-Mid","Low"]
["Gig Harbor","Emerging","Static",357.00996529999901,1.85,{"$f":"VLOOKUP(Table11[[#This Row],[Sales Prices]],Table5[],3,FALSE)","v":20},"Low","Low-Mid","Low","Low","Mid-High","Low-Mid","Low"]
["Lakewood","Transitional","Emerging",295.64806049999902,1.89,{"$f":"VLOOKUP(Table11[[#This Row],[Sales Prices]],Table5[],3,FALSE)","v":10},"Mid-High","Low","High","High","Mid-High","Low-Mid","Low"]
["Milton","Transitional","Emerging",324.24731159999902,2.0699999999999998,{"$f":"VLOOKUP(Table11[[#This Row],[Sales Prices]],Table5[],3,FALSE)","v":20},"High","Low-Mid","High","Low","High","High","Low-Mid"]
["Ruston","Transitional","Emerging",460.46507759999901,1.89,{"$f":"VLOOKUP(Table11[[#This Row],[Sales Prices]],Table5[],3,FALSE)","v":35},"Mid-High","Mid-High","Low-Mid","High","Mid-High","Low-Mid","Low"]
["Tacoma","Transitional","Emerging",460.46507759999901,1.89,{"$f":"VLOOKUP(Table11[[#This Row],[Sales Prices]],Table5[],3,FALSE)","v":35},"Mid-High","Mid-High","High","High","Mid-High","Low-Mid","Low"]
["University Place","Transitional","Emerging",330.76574540000001,1.89,{"$f":"VLOOKUP(Table11[[#This Row],[Sales Prices]],Table5[],3,FALSE)","v":20},"Mid-High","Low-Mid","High","High","Mid-High","Low-Mid","Low"]
[]
["Snohomish County","Sales Typology","Rental Typology","Median Price PSF","Asking Rent","Land Cost","Development Activity - Sales","Sales Prices","Price Growth","Development Activity - Rental","Occupancy Rate","Rent Growth","Asking Rents"]
["Bothell","Strong","Strong",469.02462630000002,2.46,{"$f":"VLOOKUP(Table12[[#This Row],[Sales Prices]],Table5[],4,FALSE)","v":40},"High","Mid-High","High","High","Mid-High","Mid-High","Mid-High"]
["Everett","Strong","Emerging",375.29411759999903,2.1,{"$f":"VLOOKUP(Table12[[#This Row],[Sales Prices]],Table5[],4,FALSE)","v":40},"Mid-High","Mid-High","High","Low-Mid","Mid-High","High","Low-Mid"]
["Mill Creek","Strong","Emerging",435.12920539999902,2.08,{"$f":"VLOOKUP(Table12[[#This Row],[Sales Prices]],Table5[],4,FALSE)","v":40},"Mid-High","Mid-High","High","Low-Mid","Mid-High","Mid-High","Low-Mid"]
["Monroe","Transitional","Emerging",373.46897969999901,2.08,{"$f":"VLOOKUP(Table12[[#This Row],[Sales Prices]],Table5[],4,FALSE)","v":40},"Mid-High","Mid-High","Low-Mid","Low-Mid","Mid-High","Mid-High","Low-Mid"]
["Snohomish","Transitional","Emerging",383.24269199999901,2.08,{"$f":"VLOOKUP(Table12[[#This Row],[Sales Prices]],Table5[],4,FALSE)","v":40},"Low","Mid-High","High","Low-Mid","Mid-High","Mid-High","Low-Mid"]
["Snoqualmie","Transitional","Emerging",456.04173600000001,2.33,{"$f":"VLOOKUP(Table12[[#This Row],[Sales Prices]],Table5[],4,FALSE)","v":40},"Mid-High","Mid-High","Mid-High","Mid-High","Low-Mid","High","Low-Mid"]

{"sheet":"Assumptions","index":5,"n_rows":184,"n_cols":14,"rows_kept":184,"cut":false,"hidden":false,"merged":[[1,5,5,5],[8,2,10,2]]}
["Table 1: Construction Cost Assumptions ($/Sqft Hard Costs, Excl. Parking, Site Work) ","1 Unit","2 Unit","3 Unit","4+ Unit","Source",null,null,null,null,null,null,"3bd","4bd"]
["4bd",291,248,272,259,"Various sources including (https://harrisonarchitects.com/how-much-will-it-cost/, RS Means) confirmed and adjusted through local developer interviews",null,null,null,null,null,null,350,325]
["3bd",307,261,287,273,null,null,null,null,null,null,null,325,300]
["2bd",324,275,303,287,null,null,null,null,null,null,null,300,275]
["1bd",341,289,318,303,null,null,null,null,null,null,null,275,250]
["Studio",378,322,354,336]
[]
["Table 2: Parking Cost Assumptions","Cost/Space","Source"]
["Surface",5000,"https://www.vtpi.org/tca/tca0504.pdf"]
["Internal (Tuck Under or Garage)",20000]
["Underground",30000]
[]
["Table 3: Miscellaneous Costs","Cost","Basis","Source"]
["Site Work Including Demolition",50000,"Lump Sum"]
["Taxes",0.01,"of Hard Costs"]
["Impact Fees",0.05,"of Hard Costs","City of Seattle / Fehr & Peers"]
["Rental Unit Operating Costs",0.1,"of GPI"]
["Contingency",0.05,"of Total Value","Developer Interviews"]
["Development Duration",9,"Months","Developer Interviews"]
[]
["Table 4: Financial Assumptions","Value"]
["Amortization Period (years)",30]
["Interest Rate",0.06]
["Terminal Cap Rate",4.4999999999999998E-2]
["GPI Annual Escalation",0.03]
["Property Value Annual Escalation",0.03]
["Terminal Occupancy Rate",0.95]
["For-Sale (Project Rate of Return)",0.2]
["For-Rent (IRR on Project Cost)",0.12]
[]
["Table 5: Template Building Physical Parameters","Detached Home","Stacked Duplex","Cottage Housing","Triplex","Fourplex","Multiplex","Courtyard Building","Townhouse","Side Court"]
["Project Type","Detached Home","Duplex","Cottage Housing","Triplex","Fourplex","Multiplex","Courtyard Building","Townhouse","Side Court"]
["Levels",2,2,1,2,2,2.5,2.5,2,2]
["Number of Units",1,2,5,3,4,8,10,1,6]
["Studio Units"]
["1 Bed Units",null,null,null,null,4,4,4,null,3]
["2 Bed Units",null,0,5,3,null,4,6,null,3]
["3 Bed Units",1,2,null,null,null,null,null,1]
["4 Bed Units"]
["Avg Unit Size",2500,1600,1000,1200,800,850,1040,2200,900]
["Studio Unit Size"]
["1 Bed Unit Size",null,null,null,null,800,700,800,null,800]
["2 Bed Unit Size",null,1600,1000,1200,null,1000,1200,null,1000]
["3 Bed Unit Size",2500,null,null,null,null,null,null,2200]
["4 Bed Unit Size"]
["Front Setback",20,10,10,10,5,10,10,0,5]
["Side Setback",5,5,5,5,5,5,5,0,5]
["Lot Width",40,45,105,45,45,65,95,18,65]
["Lot Depth",100,100,100,110,110,110,110,100,110]
["Circulation Area",0,0,0,0,0,0,0,0,0.15]
["Landscaping Outside of Setbacks (% of Lot Area)",0.18,8.7777777777777899E-2,5.2380952380952139E-2,4.6464646464646486E-2,5.7575757575757058E-2,-0.12128982128982121,-0.05,6.3888888888888967E-2,-9.9650349650349468E-2]
["Parking (Spaces per Unit)",2,1,1,1,1,1,1,1,1]
[]
["Table 6: Land Cost Per Sqft by Sales Price Typology","King","Snohomish","Pierce","Kitsap","Source"]
["Low",15,10,10,10,"Redfin / Cascadia Partners Market Research"]
["Low-Mid",25,20,20,15]
["Mid-High",45,35,40,35]
["High",85,65,55,60]
[]
["Table 7: Average Sales Price by Sales Typology","Sales Price/Sqft","Source"]
["Low",{"$f":"AVERAGEIF(MarketAnalysis!H:H,Table6[[#This Row],[Table 7: Average Sales Price by Sales Typology]],MarketAnalysis!D:D)","v":290.90892776666567},"Redfin / Cascadia Partners Market Research"]
["Low-Mid",{"$f":"AVERAGEIF(MarketAnalysis!H:H,Table6[[#This Row],[Table 7: Average Sales Price by Sales Typology]],MarketAnalysis!D:D)","v":330.01158993333269}]
["Mid-High",{"$f":"AVERAGEIF(MarketAnalysis!H:H,Table6[[#This Row],[Table 7: Average Sales Price by Sales Typology]],MarketAnalysis!D:D)","v":429.59190066153792}]
["High",{"$f":"AVERAGEIF(MarketAnalysis!H:H,Table6[[#This Row],[Table 7: Average Sales Price by Sales Typology]],MarketAnalysis!D:D)","v":612.21742711999923}]
[]
["Table 8: Average Rent by Rental Typology","Asking Rent/Sqft","Source"]
["Low",{"$f":"AVERAGEIF(MarketAnalysis!M:M,Table69[[#This Row],[Table 8: Average Rent by Rental Typology]],MarketAnalysis!E:E)","v":1.847777777777778},"Zillow / Cascadia Partners Market Research"]
["Low-Mid",{"$f":"AVERAGEIF(MarketAnalysis!M:M,Table69[[#This Row],[Table 8: Average Rent by Rental Typology]],MarketAnalysis!E:E)","v":2.1566666666666663}]
["Mid-High",{"$f":"AVERAGEIF(MarketAnalysis!M:M,Table69[[#This Row],[Table 8: Average Rent by Rental Typology]],MarketAnalysis!E:E)","v":2.4500000000000002}]
["High",{"$f":"AVERAGEIF(MarketAnalysis!M:M,Table69[[#This Row],[Table 8: Average Rent by Rental Typology]],MarketAnalysis!E:E)","v":3.1125000000000003}]
[]
["Table 9: Mortgage Assumptions","Value"]
["Interest rate",0.06]
["Taxes + Insurance",0.2]
["Downpayment",0.1]
[]
["Table 10: Median Income by Household Size","1","2","3","4","Source"]
["King",94290,107760,121230,134700,"HUD Income Limits 2022"]
["Kitsap",71750,82000,92250,102500]
["Pierce",71260,81440,91620,101800]
["Snohomish",94220,107680,121140,134600]
[]
["Table 11: Affordable Monthly Mortgage or Rent Payment by Household Size","1","2","3","4"]
["King",{"$f":"(B78/12)*0.3","v":2357.25},2694,3030.75,3367.5]
["Kitsap",1793.75,2050,2306.25,2562.4999999999995]
["Pierce",1781.4999999999998,2036,2290.5,2545]
["Snohomish",2355.5,2692,3028.5,3364.9999999999995]
[]
["Table 12: Affordable Home Price by Household Size","1","2","3","4"]
["King",{"$f":"-PV(Assumptions!$B$73/12,360,B84*(1-Assumptions!$B$74))/(1-Assumptions!$B$75)","v":349484.02935673611},{"$f":"-PV(Assumptions!$B$73/12,360,C84*(1-Assumptions!$B$74))/(1-Assumptions!$B$75)","v":399410.31926484127},{"$f":"-PV(Assumptions!$B$73/12,360,D84*(1-Assumptions!$B$74))/(1-Assumptions!$B$75)","v":449336.60917294637},{"$f":"-PV(Assumptions!$B$73/12,360,E84*(1-Assumptions!$B$74))/(1-Assumptions!$B$75)","v":499262.89908105158}]
["Kitsap",{"$f":"-PV(Assumptions!$B$73/12,360,B85*(1-Assumptions!$B$74))/(1-Assumptions!$B$75)","v":265939.96294777613},{"$f":"-PV(Assumptions!$B$73/12,360,C85*(1-Assumptions!$B$74))/(1-Assumptions!$B$75)","v":303931.38622602983},{"$f":"-PV(Assumptions!$B$73/12,360,D85*(1-Assumptions!$B$74))/(1-Assumptions!$B$75)","v":341922.80950428359},{"$f":"-PV(Assumptions!$B$73/12,360,E85*(1-Assumptions!$B$74))/(1-Assumptions!$B$75)","v":379914.23278253723}]
["Pierce",{"$f":"-PV(Assumptions!$B$73/12,360,B86*(1-Assumptions!$B$74))/(1-Assumptions!$B$75)","v":264123.78759105963},{"$f":"-PV(Assumptions!$B$73/12,360,C86*(1-Assumptions!$B$74))/(1-Assumptions!$B$75)","v":301855.75724692538},{"$f":"-PV(Assumptions!$B$73/12,360,D86*(1-Assumptions!$B$74))/(1-Assumptions!$B$75)","v":339587.72690279101},{"$f":"-PV(Assumptions!$B$73/12,360,E86*(1-Assumptions!$B$74))/(1-Assumptions!$B$75)","v":377319.69655865658}]
["Snohomish",{"$f":"-PV(Assumptions!$B$73/12,360,B87*(1-Assumptions!$B$74))/(1-Assumptions!$B$75)","v":349224.57573434804},{"$f":"-PV(Assumptions!$B$73/12,360,C87*(1-Assumptions!$B$74))/(1-Assumptions!$B$75)","v":399113.80083925475},{"$f":"-PV(Assumptions!$B$73/12,360,D87*(1-Assumptions!$B$74))/(1-Assumptions!$B$75)","v":449003.02594416169},{"$f":"-PV(Assumptions!$B$73/12,360,E87*(1-Assumptions!$B$74))/(1-Assumptions!$B$75)","v":498892.25104906852}]
[]
[]
[]
[]
["Table 13: Sales Price and Rental Rate Ranges","County","Rent_Minimum","Rent_Maximum","Sales_Minimum","Sales_Maximum","Source"]
["Darrington","Snohomish",2.08,2.08,273.29599999999999,273.29599999999999,"Rental Data: CoStar"]
["Marysville","Snohomish",2.08,2.08,326.38889999999998,375.29410000000001,"Sales Data: Redfin"]
["Granite Falls","Snohomish",2.08,2.08,340.25790000000001,340.25790000000001]
["Lake Stevens","Snohomish",2.08,2.08,326.38889999999998,375.29410000000001]
["Snohomish","Snohomish",2.08,2.08,383.24270000000001,383.24270000000001]
["Monroe","Snohomish",2.08,2.08,373.46899999999999,383.24270000000001]
["Mill Creek","Snohomish",2.08,2.46,378.49930000000001,435.12920000000003]
["Sultan","Snohomish",2.08,2.08,285.5994,373.46899999999999]
["Gold Bar","Snohomish",2.08,2.08,285.5994,329.35910000000001]
["Index","Snohomish",2.08,2.08,285.5994,329.35910000000001]
["Bothell","Snohomish",2.46,2.46,399.45960000000002,478.9006]
["Mountlake Terrace","Snohomish",2.23,2.27,399.45960000000002,456.7731]
["Skykomish","King",2.33,2.33,553.28369999999995,553.28369999999995]
["Clyde Hill","King",2.87,2.97,758.61869999999999,1175.5150000000001]
["Bremerton","Kitsap",2,2.17,270.2276,290.404]
["Fife","Pierce",1.85,1.89,278.89449999999999,324.2473]
["Edgewood","Pierce",1.85,2.0699999999999998,278.89449999999999,324.38380000000001]
["Pacific","Pierce",1.85,1.9,301.31319999999999,335.5369]
["Auburn","Pierce",1.85,1.85,297.39330000000001,335.5369]
["Buckley","Pierce",1.55,2.33,303.13139999999999,333.00689999999997]
["South Prairie","Pierce",1.55,1.85,262.00869999999998,413.69049999999999]
["Roy","Pierce",1.55,2,309.16550000000001,309.16550000000001]
["Bainbridge Island","Kitsap",2.57,2.57,537.18460000000005,537.18460000000005]
["Poulsbo","Kitsap",2.0299999999999998,2.0299999999999998,320.53620000000001,320.53620000000001]
["Port Orchard","Kitsap",2.09,2.09,284.77539999999999,290.404]
["Brier","Snohomish",2.23,2.23,399.45960000000002,469.02460000000002]
["Woodway","Snohomish",2.23,2.27,502.90699999999998,557.96320000000003]
["Edmonds","Snohomish",2.23,2.27,399.45960000000002,557.96320000000003]
["Everett","Snohomish",2.08,2.1,326.38889999999998,416.59780000000001]
["Stanwood","Snohomish",2.08,2.08,355.17239999999998,355.17239999999998]
["Arlington","Snohomish",2.08,2.08,336.70030000000003,349.27629999999999]
["Shoreline","King",2.23,2.46,423.28210000000001,557.96320000000003]
["Kirkland","King",2.46,2.97,460.59370000000001,942.48]
["Bothell","King",2.46,2.46,460.59370000000001,526.74879999999996]
["Kenmore","King",2.23,2.87,399.45960000000002,526.74879999999996]
["Redmond","King",2.33,2.97,526.74879999999996,758.61869999999999]
["Sammamish","King",2.33,2.85,456.04169999999999,640.17190000000005]
["Yarrow Point","King",2.87,2.97,758.61869999999999,942.48]
["Hunts Point","King",2.97,2.97,942.48,1175.5150000000001]
["Medina","King",2.97,2.97,942.48,1175.5150000000001]
["Bellevue","King",2.52,2.97,428.26859999999999,1175.5150000000001]
["Issaquah","King",2.33,2.52,528.14030000000002,640.17190000000005]
["Beaux Arts","King",2.97,2.97,942.48,942.48]
["Newcastle","King",2.35,2.97,428.26859999999999,584.7953]
["Lake Forest Park","King",2.23,2.46,399.45960000000002,473.19040000000001]
["Woodinville","King",2.08,2.87,478.9006,615.76350000000002]
["Duvall","King",2.33,2.33,394.49540000000002,394.49540000000002]
["Carnation","King",2.33,2.33,431.03449999999998,431.03449999999998]
["Snoqualmie","King",2.33,2.33,453.70370000000003,456.9547]
["North Bend","King",2.33,2.33,453.70370000000003,456.9547]
["Burien","King",1.93,2.4,321.13819999999998,416.66669999999999]
["Seattle","King",1.93,3.66,321.13819999999998,1175.5150000000001]
["SeaTac","King",1.93,2.4,312.32889999999998,381.13909999999998]
["Normandy Park","King",1.93,1.93,363.13279999999997,395.97489999999999]
["Des Moines","King",1.93,2.14,302.32560000000001,381.13909999999998]
["Kent","King",1.9,2.52,299.78590000000003,365.46050000000002]
["Federal Way","King",1.85,2.0699999999999998,299.78590000000003,363.13279999999997]
["Auburn","King",1.85,2.52,297.39330000000001,357.5684]
["Algona","King",1.9,1.9,299.78590000000003,335.5369]
["Pacific","King",1.85,1.9,299.78590000000003,335.5369]
["Milton","King",1.85,2.0699999999999998,299.78590000000003,324.2473]
["Covington","King",2.14,2.52,323.97309999999999,365.46050000000002]
["Maple Valley","King",2.33,2.33,323.97309999999999,441.07260000000002]
["Black Diamond","King",2.33,2.33,310.88889999999998,365.46050000000002]
["Enumclaw","King",2.33,2.33,333.00689999999997,333.00689999999997]
["Tacoma","Pierce",1.85,1.89,278.89449999999999,460.46510000000001]
["Puyallup","Pierce",1.85,1.85,274.31420000000003,310.79230000000001]
["Sumner","Pierce",1.85,1.85,297.39330000000001,335.5369]
["Bonney Lake","Pierce",1.85,1.85,297.39330000000001,324.38380000000001]
["Steilacoom","Pierce",1.89,2,283.47620000000001,333.83659999999998]
["DuPont","Pierce",2,2,265.54860000000002,265.54860000000002]
["University Place","Pierce",1.89,1.89,283.47620000000001,339.88760000000002]
["Lakewood","Pierce",1.85,2,283.47620000000001,333.83659999999998]
["Fircrest","Pierce",1.89,1.89,300.4622,339.88760000000002]
["Ruston","Pierce",1.89,1.89,440.55200000000002,440.55200000000002]
["Gig Harbor","Pierce",1.85,1.85,350.03680000000003,357.01]
["Wilkeson","Pierce",1.55,1.55,303.13139999999999,332.7516]
["Carbonado","Pierce",1.55,1.55,303.13139999999999,332.7516]
["Orting","Pierce",1.85,1.85,262.00869999999998,297.39330000000001]
["Eatonville","Pierce",1.55,1.55,298.18430000000001,298.18430000000001]
["Milton","Pierce",1.85,2.0699999999999998,278.89449999999999,324.2473]
["Renton","King",2.14,2.52,339.30459999999999,445.16129999999998]
["Tukwila","King",1.93,2.5,312.32889999999998,485.20710000000003]
["Mercer Island","King",2.97,2.97,806.73910000000001,806.73910000000001]
["Mukilteo","Snohomish",2.1,2.23,351.38189999999997,425.24009999999998]
["Lynnwood","Snohomish",2.23,2.23,381.67939999999999,425.24009999999998]

{"sheet":"Lists","index":6,"n_rows":170,"n_cols":18,"rows_kept":170,"cut":false,"hidden":true,"merged":[[29,1,29,2],[35,1,35,2],[57,1,57,2],[64,1,64,2]]}
["Project Type Selection"]
[]
["Middle Housing Type","Single-Family Detached","Duplex","Cottage Housing","Triplex","Fourplex","Multiplex","Courtyard Building","Townhouse","Side Court"]
["ET Pro Forma Type","Single Family","Semi-Detached / Townhome","Single Family","Semi-Detached / Townhome","Semi-Detached / Townhome","Multifamily","Multifamily","Semi-Detached / Townhome","Semi-Detached / Townhome"]
["Renter or Owner","Rental","Ownership"]
[]
[]
[]
[]
[]
[]
[]
["Regional Market Values","Median Sales PSF","Median Rent PSF","Land Cost / Sqft"]
["Min",{"$f":"MIN(MarketAnalysis!D:D)","v":278.89447239999902},{"$f":"MIN(MarketAnalysis!E:E)","v":1.55},{"$f":"MIN(MarketAnalysis!F:F)","v":10}]
["Low",{"$f":"MAX(IF(MarketAnalysis!$H:$H=Lists!$A15,MarketAnalysis!D:D))","v":298.18425039999897},{"$f":"MAX(IF(MarketAnalysis!$M:$M=Lists!$A15,MarketAnalysis!E:E))","v":1.93},{"$f":"MAX(IF(MarketAnalysis!$H:$H=Lists!$A15,MarketAnalysis!F:F))","v":10}]
["Low-Mid",{"$f":"MIN(IF(MarketAnalysis!$H:$H=Lists!$A16,MarketAnalysis!D:D))","v":310.79234969999902},{"$f":"MIN(IF(MarketAnalysis!$M:$M=Lists!$A16,MarketAnalysis!E:E))","v":2.0699999999999998},{"$f":"MIN(IF(MarketAnalysis!$H:$H=Lists!$A16,MarketAnalysis!F:F))","v":20}]
["Low-Mid",{"$f":"MAX(IF(MarketAnalysis!$H:$H=Lists!$A17,MarketAnalysis!D:D))","v":357.00996529999901},{"$f":"MAX(IF(MarketAnalysis!$M:$M=Lists!$A17,MarketAnalysis!E:E))","v":2.33},{"$f":"MAX(IF(MarketAnalysis!$H:$H=Lists!$A17,MarketAnalysis!F:F))","v":25}]
["Mid-High",{"$f":"MIN(IF(MarketAnalysis!$H:$H=Lists!$A18,MarketAnalysis!D:D))","v":373.46897969999901},{"$f":"MIN(IF(MarketAnalysis!$M:$M=Lists!$A18,MarketAnalysis!E:E))","v":2.35},{"$f":"MIN(IF(MarketAnalysis!$H:$H=Lists!$A18,MarketAnalysis!F:F))","v":35}]
["Mid-High",{"$f":"MAX(IF(MarketAnalysis!$H:$H=Lists!$A19,MarketAnalysis!D:D))","v":469.02462630000002},{"$f":"MAX(IF(MarketAnalysis!$M:$M=Lists!$A19,MarketAnalysis!E:E))","v":2.52},{"$f":"MAX(IF(MarketAnalysis!$H:$H=Lists!$A19,MarketAnalysis!F:F))","v":45}]
["High",{"$f":"MIN(IF(MarketAnalysis!$H:$H=Lists!$A20,MarketAnalysis!D:D))","v":502.90697669999901},{"$f":"MIN(IF(MarketAnalysis!$M:$M=Lists!$A20,MarketAnalysis!E:E))","v":2.85},{"$f":"MIN(IF(MarketAnalysis!$H:$H=Lists!$A20,MarketAnalysis!F:F))","v":85}]
["Max",{"$f":"MAX(MarketAnalysis!D:D)","v":750},{"$f":"MAX(MarketAnalysis!E:E)","v":3.66},{"$f":"MAX(MarketAnalysis!F:F)","v":85}]
[]
[]
[]
[]
["Current Selection","Slider Value","Sales Price","1 Bed Rental Rate","Shared Driveway","Land Cost","Return","Parking","Unit Size","Landsape Override","Floors","Impact Fees","Dev Duration","Max Rent or Sale","Lot Width","Lot Depth","Front SB","Side SB"]
[null,45,{"$f":"IF(Dashboard!C12=\"For Sale\",Dashboard!D29,0)","v":459.5625},{"$f":"IF(Dashboard!C12=\"For Sale\",200+(7.5*Lists!B27),1.5+(0.02415*Lists!B27))","v":537.5},{"$f":"HLOOKUP(Dashboard!C11,Assumptions!B32:J50,19,FALSE)","v":0},{"$f":"IF(Dashboard!D24<>\"\",Dashboard!D24,40)","v":40},{"$f":"IF(Dashboard!C12=\"For Sale\",'Residential Owner'!E17,BF_ActReturnRenter)","v":0.19735438905370878},{"$f":"IF(Dashboard!D21<>\"\",Dashboard!D21,Preset_Parking)","v":1},{"$f":"IF(Dashboard!D19<>\"\",Dashboard!D19,Preset_UnitSz)","v":1600},null,{"$f":"IF(Dashboard!D18<>\"\",Dashboard!D18,Preset_Ht)","v":2},{"$f":"IF(Dashboard!D22<>\"\",Dashboard!D22,Assumptions!B16)","v":0.05},{"$f":"IF(Dashboard!D23<>\"\",Dashboard!D23,Assumptions!B19)","v":9},{"$f":"IF(Dashboard!C12=\"For Rent\",VLOOKUP(Dashboard!C8,Assumptions!A98:F184,4,FALSE),VLOOKUP(Dashboard!C8,Assumptions!A98:F184,6,FALSE))","v":557.96320000000003},{"$f":"IF(Dashboard!D16<>\"\",Dashboard!D16,Preset_LotW)","v":45},{"$f":"IF(Dashboard!D17<>\"\",Dashboard!D17,Preset_LotD)","v":100},{"$f":"Preset_FSb","v":10},{"$f":"Preset_SSb","v":5}]
[]
[]
["AMI Chart Inputs","Return Threshold Trendline"]
[null,{"$f":"IF(Dashboard!C12=\"For Sale\",Assumptions!B28,Assumptions!B29)","v":0.2},0]
[null,{"$f":"B31","v":0.2},5]
[]
[]
[]
["Project Type Inputs"]
["Levels",{"$f":"SUMIF(Assumptions!$B$32:$J$32,Dashboard!$C$11,Assumptions!$B33:$JI33)","v":2}]
["Number of Units",{"$f":"SUMIF(Assumptions!$B$32:$J$32,Dashboard!$C$11,Assumptions!$B34:$JI34)","v":2}]
["Studio Units",{"$f":"SUMIF(Assumptions!$B$32:$J$32,Dashboard!$C$11,Assumptions!$B35:$JI35)","v":0}]
["1 Bed Units",{"$f":"SUMIF(Assumptions!$B$32:$J$32,Dashboard!$C$11,Assumptions!$B36:$JI36)","v":0}]
["2 Bed Units",{"$f":"SUMIF(Assumptions!$B$32:$J$32,Dashboard!$C$11,Assumptions!$B37:$JI37)","v":0}]
["3 Bed Units",{"$f":"SUMIF(Assumptions!$B$32:$J$32,Dashboard!$C$11,Assumptions!$B38:$JI38)","v":2}]
["4 Bed Units",{"$f":"SUMIF(Assumptions!$B$32:$J$32,Dashboard!$C$11,Assumptions!$B39:$JI39)","v":0}]
["Unit Size",{"$f":"SUMIF(Assumptions!$B$32:$J$32,Dashboard!$C$11,Assumptions!$B40:$JI40)","v":1600}]
["Studio Unit Size",{"$f":"SUMIF(Assumptions!$B$32:$J$32,Dashboard!$C$11,Assumptions!$B41:$JI41)","v":0}]
["1 Bed Unit Size",{"$f":"SUMIF(Assumptions!$B$32:$J$32,Dashboard!$C$11,Assumptions!$B42:$JI42)","v":0}]
["2 Bed Unit Size",{"$f":"SUMIF(Assumptions!$B$32:$J$32,Dashboard!$C$11,Assumptions!$B43:$JI43)","v":1600}]
["3 Bed Unit Size",{"$f":"SUMIF(Assumptions!$B$32:$J$32,Dashboard!$C$11,Assumptions!$B44:$JI44)","v":0}]
["4 Bed Unit Size",{"$f":"SUMIF(Assumptions!$B$32:$J$32,Dashboard!$C$11,Assumptions!$B45:$JI45)","v":0}]
["Front Setback",{"$f":"SUMIF(Assumptions!$B$32:$J$32,Dashboard!$C$11,Assumptions!$B46:$JI46)","v":10}]
["Side Setback",{"$f":"SUMIF(Assumptions!$B$32:$J$32,Dashboard!$C$11,Assumptions!$B47:$JI47)","v":5}]
["Lot Width",{"$f":"SUMIF(Assumptions!$B$32:$J$32,Dashboard!$C$11,Assumptions!$B48:$JI48)","v":45}]
["Lot Depth",{"$f":"SUMIF(Assumptions!$B$32:$J$32,Dashboard!$C$11,Assumptions!$B49:$JI49)","v":100}]
["Extra Landscaping",{"$f":"IF(J27<>\"\",J27,SUMIF(Assumptions!$B$32:$J$32,Dashboard!$C$11,Assumptions!$B51:$J51))","v":8.7777777777777899E-2}]
["Parking",{"$f":"SUMIF(Assumptions!$B$32:$J$32,Dashboard!$C$11,Assumptions!$B52:$J52)","v":1}]
[]
[]
["AMI Inputs"]
["Fam Size",{"$f":"IF(ROUNDUP(PI_AvgUnitsize/400,0)>4,4,ROUNDUP(PI_AvgUnitsize/400,0))","v":4}]
["County",{"$f":"CountyLookup","v":"King"}]
["Max Monthly Payment",{"$f":"IF(B59=1,SUMIF(Table17[Table 11: Affordable Monthly Mortgage or Rent Payment by Household Size],Lists!B60,Table17[1]),IF(Lists!B59=2,SUMIF(Table17[Table 11: Affordable Monthly Mortgage or Rent Payment by Household Size],Lists!B60,Table17[2]),IF(Lists!B59=3,SUMIF(Table17[Table 11: Affordable Monthly Mortgage or Rent Payment by Household Size],Lists!B60,Table17[3]),SUMIF(Table17[Table 11: Affordable Monthly Mortgage or Rent Payment by Household Size],Lists!B60,Table17[4]))))","v":3367.5}]
["Max Home Price",{"$f":"IF(B59=1,SUMIF(Table17[Table 11: Affordable Monthly Mortgage or Rent Payment by Household Size],Lists!B60,Table1520[1]),IF(Lists!B59=2,SUMIF(Table17[Table 11: Affordable Monthly Mortgage or Rent Payment by Household Size],Lists!B60,Table1520[2]),IF(Lists!B59=3,SUMIF(Table17[Table 11: Affordable Monthly Mortgage or Rent Payment by Household Size],Lists!B60,Table1520[3]),SUMIF(Table17[Table 11: Affordable Monthly Mortgage or Rent Payment by Household Size],Lists!B60,Table1520[4]))))","v":499262.89908105158}]
[]
[]
["City List"]
["Skykomish","King"]
["Clyde Hill","King"]
["Shoreline","King"]
["Kirkland","King"]
["Bothell","King"]
["Kenmore","King"]
["Redmond","King"]
["Sammamish","King"]
["Yarrow Point","King"]
["Hunts Point","King"]
["Medina","King"]
["Bellevue","King"]
["Issaquah","King"]
["Beaux Arts","King"]
["Newcastle","King"]
["Lake Forest Park","King"]
["Woodinville","King"]
["Duvall","King"]
["Carnation","King"]
["Snoqualmie","King"]
["North Bend","King"]
["Burien","King"]
["Seattle","King"]
["SeaTac","King"]
["Normandy Park","King"]
["Des Moines","King"]
["Kent","King"]
["Federal Way","King"]
["Auburn","King"]
["Algona","King"]
["Pacific","King"]
["Milton","King"]
["Covington","King"]
["Maple Valley","King"]
["Black Diamond","King"]
["Enumclaw","King"]
["Renton","King"]
["Tukwila","King"]
["Mercer Island","King"]
["Bremerton","Kitsap"]
["Bainbridge Island","Kitsap"]
["Poulsbo","Kitsap"]
["Port Orchard","Kitsap"]
["Fife","Pierce"]
["Edgewood","Pierce"]
["Pacific","Pierce"]
["Auburn","Pierce"]
["Buckley","Pierce"]
["South Prairie","Pierce"]
["Roy","Pierce"]
["Tacoma","Pierce"]
["Puyallup","Pierce"]
["Sumner","Pierce"]
["Bonney Lake","Pierce"]
["Steilacoom","Pierce"]
["DuPont","Pierce"]
["University Place","Pierce"]
["Lakewood","Pierce"]
["Fircrest","Pierce"]
["Ruston","Pierce"]
["Gig Harbor","Pierce"]
["Wilkeson","Pierce"]
["Carbonado","Pierce"]
["Orting","Pierce"]
["Eatonville","Pierce"]
["Milton","Pierce"]
["Darrington","Snohomish"]
["Marysville","Snohomish"]
["Granite Falls","Snohomish"]
["Lake Stevens","Snohomish"]
["Snohomish","Snohomish"]
["Monroe","Snohomish"]
["Mill Creek","Snohomish"]
["Sultan","Snohomish"]
["Gold Bar","Snohomish"]
["Index","Snohomish"]
["Bothell","Snohomish"]
["Mountlake Terrace","Snohomish"]
["Brier","Snohomish"]
["Woodway","Snohomish"]
["Edmonds","Snohomish"]
["Everett","Snohomish"]
["Stanwood","Snohomish"]
["Arlington","Snohomish"]
["Mukilteo","Snohomish"]
["Lynnwood","Snohomish"]
[]
[]
["Placetypes"," "]
["City_Center_Adjacent","NRO.M2"]
["Main_Street_Adjacent_Neighborhood","NRO.M2","NRO.M1"]
["Corridor_Adjacent_Neighborhood","NRO.M1","NRO.S.2"]
["Neighborhood_Node_Adjacent","NRO.M1"]
["Mixed_Neighborhood_Small_Footprint","NRO.M1","NRO.S.2"]
["Mixed_Neighborhood_Medium_Footprint","NRO.M1"]
["Mixed_Neighborhood_Large_Footprint","NRO.M1","NRO.M2"]
["Small_Lot_Detached_Neighborhood","NRO.S.1"]
["Large_Lot_Detached_Neighborhood","NRO.S.1"]
[]
[]
["Zones"," ",null," "]
["NRO.M2","Triplex","Fourplex","Townhouse","Courtyard Building","Multiplex","Side Court"]
["NRO.M1","Triplex","Fourplex","Townhouse","Courtyard Building","Multiplex","Side Court"]
["NRO.S.2","Duplex","Cottage Housing","Triplex","Fourplex","Townhouse","Side Court"]
["NRO.S.1","Duplex","Cottage Housing","Triplex","Fourplex"]

{"sheet":"Physical Inputs","index":7,"n_rows":167,"n_cols":12,"rows_kept":167,"cut":false,"hidden":true,"merged":[[40,0,42,0],[19,3,19,4]]}
["Physical Stats"]
["Housing Units / Hotel Rooms",{"$f":"'Physical Outputs'!D39","v":1.9999999999999993}]
["Jobs",{"$f":"'Physical Outputs'!E39","v":0}]
[{"$f":"\"Net Rentable/Sellable \"&'Metric Translation'!B7","v":"Net Rentable/Sellable Square Feet"},{"$f":"'Physical Outputs'!C39-'Physical Outputs'!C38","v":3199.9999999999991}]
[{"$f":"\"Housing / Hotel Room Density (Per \"&'Metric Translation'!B10&\")\"","v":"Housing / Hotel Room Density (Per Acre)"},{"$f":"'Physical Outputs'!F39","v":19.359999999999992}]
[{"$f":"\"Job Density (Per \"&'Metric Translation'!B10&\")\"","v":"Job Density (Per Acre)"},{"$f":"'Physical Outputs'!G39","v":0}]
["FAR ◊",{"$f":"'Physical Outputs'!B39/'Physical Inputs'!B34","v":0.71111111111111092}]
["FAR (Excluding Internal Parking)",{"$f":"SUM('Physical Outputs'!B29:B35)/'Physical Inputs'!B34","v":0.71111111111111092}]
["Financial Stats"]
["Rental (Residential and Commercial)","Target Return","Actual Return"]
["IRR on Project Cost (Unleveraged Return)",{"$f":"'Mixed-Use Summary'!N6","v":0.12},{"$f":"'Mixed-Use Summary'!P6","v":0}]
["Cash-on-Cash (After Year 3)",{"$f":"'Mixed-Use Summary'!N5","v":0.12},{"$f":"'Mixed-Use Summary'!P5","v":0}]
["IRR on Investor Equity (Leveraged Return Before Tax)",{"$f":"'Mixed-Use Summary'!N7","v":0.25},{"$f":"'Mixed-Use Summary'!P7","v":0}]
["Debt Service Coverage Ratio (Year 3)",{"$f":"'Mixed-Use Summary'!N8","v":1.25},{"$f":"'Mixed-Use Summary'!P8","v":0}]
["IRR on Public Participation",{"$f":"'Mixed-Use Summary'!N9","v":0.05},{"$f":"'Mixed-Use Summary'!P9","v":0}]
["Owner Residential","Target Return","Actual Return"]
["Project Rate of Return",{"$f":"'Mixed-Use Summary'!T5","v":0.2},{"$f":"IF('Physical Inputs'!$B$42=\"Owner\",'Mixed-Use Summary'!V5,\"N/A\")","v":0.19735438905370878}]
["Return to Equity",{"$f":"'Mixed-Use Summary'!T6","v":0.75},{"$f":"IF('Physical Inputs'!$B$42=\"Owner\",'Mixed-Use Summary'!V6,\"N/A\")","v":0.98677194526854406}]
["Physical Inputs"]
["Project Info",null,null,"Balance to Unit Target ◊"]
["Building Name ◊","Brampton - New Build Duplex"]
["Units of Measurement","US Customary"]
["Currency","USD"]
["Project Location ◊","Puget Sound, WA",null,"Unit Target:",{"$f":"Dashboard!D20","v":0}]
[]
["Lot Dimesions (Optional)",{"$f":"\"Lot Dimensions (\"&'Metric Translation'!B7&\")\"","v":"Lot Dimensions (Square Feet)"},{"$f":"\"Setbacks (\"&'Metric Translation'!B7&\")\"","v":"Setbacks (Square Feet)"},{"$f":"\"Landscaped Area (\"&'Metric Translation'!B6&\")\"","v":"Landscaped Area (ft)"},"Pervious %"]
["Front",{"$f":"Lists!O27","v":45},{"$f":"Lists!Q27","v":10},{"$f":"B27*C27*E27","v":450},1]
["Rear",{"$f":"B27","v":45},15,{"$f":"B28*C28*E28","v":675},1]
["Left",{"$f":"Lists!P27","v":100},{"$f":"Lists!R27","v":5},{"$f":"(((B29-(C27+C28))*C29))*E29","v":375},1]
["Right",{"$f":"B29","v":100},{"$f":"C29","v":5},{"$f":"(((B30-(C27+C28))*C30))*E30","v":375},1]
["Calculated Total",{"$f":"AVERAGE(B27:B28)*AVERAGE(B29:B30)","v":4500},null,{"$f":"SUMPRODUCT(D27:D30,E27:E30)","v":1875},{"$f":"D31/B31","v":0.41666666666666669}]
[]
["Site Characteristics","Renter",null,null,"Apply Lot Dimensions ◊"]
["Site area ◊",{"$f":"PI_CalcLotSize","v":4500},{"$f":"IF('Physical Inputs'!B22=\"Metric\",PI_SiteArea/10000,'Physical Inputs'!B34/43560)","v":0.10330578512396695},{"$f":"'Metric Translation'!B4&\" / \"&'Metric Translation'!B12","v":"square feet / acres"}]
["Site net-to-gross ratio ◊",{"$f":"1-Lists!E27","v":1},{"$f":"(1-PI_GrossToNet)*PI_SiteArea","v":0},{"$f":"\"percent / \"&'Metric Translation'!B4","v":"percent / square feet"}]
["Landscaping ◊",{"$f":"PI_CalcLandscape+Preset_ExLandscp","v":0.50444444444444458},{"$f":"PI_SiteArea*PI_LandscapePct","v":2270.0000000000005},{"$f":"\"percent / \"&'Metric Translation'!B4","v":"percent / square feet"}]
[{"$f":"\"Building height (\"&'Metric Translation'!B18&\")\"","v":"Building height (stories)"},{"$f":"Lists!K27","v":2},{"$f":"PO_BuildingFootprint","v":1599.9999999999995},{"$f":"\"ground floor \"&'Metric Translation'!B4","v":"ground floor square feet"}]
["Under-build ◊",1,{"$f":"'Physical Outputs'!B39","v":3199.9999999999991},"gross building area"]
[]
["Building Uses ◊"]
["Residential",{"$f":"HLOOKUP(Dashboard!C11,Lists!B3:M4,2,FALSE)","v":"Semi-Detached / Townhome"},"select residential type"]
[null,"Owner","select occupancy type"]
[null,1]
["Retail",0]
["% of Ground Floor",{"$f":"IF(PI_Internal<1,('Physical Outputs'!B30-'Physical Outputs'!B38)/PO_BuildingFootprint,'Physical Outputs'!B30/PO_BuildingFootprint)","v":0}]
["Office",0]
["Industrial",0]
["Public",0]
["Education",0]
["Hotel/Motel",0]
["Commercial Parking",0]
["Total (Check)",{"$f":"SUM(B43:B44,B46:B51)","v":1}]
[]
["Average Residential Unit Size",{"$f":"\"Avg. Unit Size (Net \"&'Metric Translation'!B5&\")\"","v":"Avg. Unit Size (Net sf)"},"% of Units in Building","Required Parking by Type ◊","# of Units by Type","Bedrooms"]
["Affordable",0,0,{"$f":"2*0.6","v":1.2},{"$f":"('Physical Outputs'!$C$29/$B$62)*C55","v":0}]
["4+ Bedroom",{"$f":"Lists!B49","v":0},{"$f":"Lists!B43/Preset_Units","v":0},{"$f":"3.5*0.6","v":2.1},{"$f":"('Physical Outputs'!$C$29/$B$62)*C56","v":0},{"$f":"4*E56","v":0}]
["3 Bedroom",{"$f":"Lists!B48","v":0},{"$f":"Lists!B42/Preset_Units","v":1},2,{"$f":"('Physical Outputs'!$C$29/$B$62)*C57","v":1.9999999999999993},{"$f":"3*E57","v":5.9999999999999982}]
["2 Bedroom",{"$f":"Lists!B47","v":1600},{"$f":"Lists!B41/Preset_Units","v":0},1,{"$f":"('Physical Outputs'!$C$29/$B$62)*C58","v":0},{"$f":"2*E58","v":0}]
["1 Bedroom",{"$f":"Lists!B46","v":0},{"$f":"Lists!B40/Preset_Units","v":0},{"$f":"1.5*0.6","v":0.89999999999999991},{"$f":"('Physical Outputs'!$C$29/$B$62)*C59","v":0},{"$f":"1*E59","v":0}]
["Studio",{"$f":"Lists!B45","v":0},{"$f":"Lists!B39/Preset_Units","v":0},{"$f":"1*0.6","v":0.6},{"$f":"('Physical Outputs'!$C$29/$B$62)*C60","v":0},{"$f":"1*E60","v":0}]
["Calculated Avg. Residential Unit Size",{"$f":"SUMPRODUCT(B55:B60,C55:C60)","v":0},{"$f":"SUM(C55:C60)","v":1},{"$f":"SUMPRODUCT(C55:C60,D55:D60)","v":2},{"$f":"SUM(E55:E60)","v":1.9999999999999993},{"$f":"SUM(F55:F60)","v":5.9999999999999982}]
["User-defined Avg. Residential Unit Size ◊",{"$f":"Lists!I27","v":1600}]
[]
["Area per Employee by Sector (Average) ◊","Gross","Net"]
["Retail",945,{"$f":"PI_RetDen*AF_RetailGrossPct","v":803.25},{"$f":"\"gross / net \"&'Metric Translation'!$B$4&\" / worker\"","v":"gross / net square feet / worker"}]
["Office",387,{"$f":"PI_OffDen*AF_OffGrossPct","v":328.95},{"$f":"\"gross / net \"&'Metric Translation'!$B$4&\" / worker\"","v":"gross / net square feet / worker"}]
["Industrial",1730,{"$f":"PI_IndDen*AF_IndGrossPct","v":1470.5},{"$f":"\"gross / net \"&'Metric Translation'!$B$4&\" / worker\"","v":"gross / net square feet / worker"}]
["Public",746,{"$f":"PI_PubDen*AF_PubGrossPct","v":634.1},{"$f":"\"gross / net \"&'Metric Translation'!$B$4&\" / worker\"","v":"gross / net square feet / worker"}]
["Educational",767,{"$f":"PI_EduDen","v":767},{"$f":"\"gross / net \"&'Metric Translation'!$B$4&\" / worker\"","v":"gross / net square feet / worker"}]
["Hotel/Motel (Area per Employee)",1317,{"$f":"PI_HotelDen*AF_HotelGrossPct","v":1119.45},{"$f":"\"gross / net \"&'Metric Translation'!$B$4&\" / worker\"","v":"gross / net square feet / worker"}]
["Hotel/Motel (Room Size)",400,{"$f":"PI_HotelRmDen*AF_HotelGrossPct","v":340},{"$f":"\"net \"&'Metric Translation'!$B$4&\" / room\"","v":"net square feet / room"}]
["Commercial Parking",20000,"-",{"$f":"\"gross \"&'Metric Translation'!$B$4&\" / worker\"","v":"gross square feet / worker"}]
[]
["Parking Requirements"]
[{"$f":"\"Spaces Per Unit, Hotel Room or 1,000 Gross \"&'Metric Translation'!B5","v":"Spaces Per Unit, Hotel Room or 1,000 Gross sf"},"Gross","Net",null,null,null,null,null,null,null,null," "]
["Residential ◊",{"$f":"Lists!H27","v":1},{"$f":"PI_ResParking","v":1},"space(s) / dwelling unit"]
["Retail ◊",0,{"$f":"PI_RetParking/AF_RetailGrossPct","v":0},{"$f":"\"space(s) / 1000 \"&'Metric Translation'!$B$5","v":"space(s) / 1000 sf"}]
["Office ◊",0,{"$f":"PI_OffParking/AF_OffGrossPct","v":0},{"$f":"\"space(s) / 1000 \"&'Metric Translation'!$B$5","v":"space(s) / 1000 sf"}]
["Industrial ◊",0,{"$f":"PI_IndParking/AF_IndGrossPct","v":0},{"$f":"\"space(s) / 1000 \"&'Metric Translation'!$B$5","v":"space(s) / 1000 sf"}]
["Public",0,{"$f":"PI_PubParking/AF_PubGrossPct","v":0},{"$f":"\"space(s) / 1000 \"&'Metric Translation'!$B$5","v":"space(s) / 1000 sf"}]
["Educational",0,{"$f":"PI_EduParking","v":0},{"$f":"\"space(s) / 1000 \"&'Metric Translation'!$B$5","v":"space(s) / 1000 sf"}]
["Hotel/Motel ◊",0,{"$f":"PI_HotelParking","v":0},"space(s) / room"]
[]
["Parking Type"]
["Surface or Structured Parking",1,"(number of levels)",null,null,null,null,null,null,null,null," "]
["Internal Parking (Tuck Under or Podium) ◊",0,"(number of levels)"]
["% Used ◊",{"$f":"IFERROR(IF(B86=0,\"\",(IF('Physical Outputs'!B61=0,\"Add Additional Parking Type\",IF((('Physical Outputs'!B53-'Physical Outputs'!B57-'Physical Outputs'!B58)/'Physical Outputs'!B60)>1,1,(('Physical Outputs'!B53-'Physical Outputs'!B57-'Physical Outputs'!B58)/'Physical Outputs'!B60))))),\"-\")","v":""},{"$f":"IF(B86=0,\"\",IF('Physical Outputs'!B61,\"Percent Used (internal parking check, if only parking type)\",\"\"))","v":""}]
["Underground Parking ◊",0,"(maximum number of levels to test)"]
[null,{"$f":"('Building Envelope Calculator'!C25*'Physical Inputs'!C100)/('Building Envelope Calculator'!B7)","v":0.19512499999999997},{"$f":"\"levels will maximize site without surface or structured parking\"","v":"levels will maximize site without surface or structured parking"}]
[null,{"$f":"'Building Envelope Calculator'!B171/('Physical Inputs'!B34/'Physical Inputs'!C100)","v":0},"actual underground levels after factoring underbuild"]
["Mechanical parking? ◊","no"]
[]
["Parking Layout"]
[null,"Mark choice with \"X\"",{"$f":"IF('Physical Inputs'!B22=\"Metric\", \"Square meters per space  ◊\",\"Square feet per space  ◊\")","v":"Square feet per space  ◊"}]
["Suburban Perpendicular",null,400,{"$f":"'Metric Translation'!$B$4","v":"square feet"}]
["Urban Perpendicular","x",315,{"$f":"'Metric Translation'!$B$4","v":"square feet"}]
["Structured",null,260,{"$f":"'Metric Translation'!$B$4","v":"square feet"}]
["Mechanical",null,125,{"$f":"'Metric Translation'!$B$4","v":"square feet"}]
["Custom",null,325,{"$f":"'Metric Translation'!$B$4","v":"square feet"}]
["Parking Area ◊",null,{"$f":"IF(B95=\"X\",C95,IF(B96=\"X\",C96,IF(B97=\"X\",C97,IF(B98=\"X\",C98,IF(B99=\"X\",C99,0)))))","v":315}]
[]
[]
[]
[]
[]
[]
[]
[]
[]
[]
[]
[]
[]
[]
[]
[]
[]
[]
[]
[]
[]
[]
[]
[]
[]
[]
[]
[]
[]
[]
[]
[]
[]
[]
[]
[]
[]
[]
[]
[]
[]
[]
[]
[]
[]
[]
[]
[]
[]
[]
[]
[]
[]
["Res Menu - Do Not Alter"]
["Owner"]
["Renter"]
["None"]
[]
[{"$f":"IF('Physical Inputs'!B23=\"GBP\",\"Detached\",\"Single Family\")","v":"Single Family"}]
["Semi-Detached / Townhome"]
["Multifamily"]
["Mobile Home"]
["None"]
[]
[]
["Res Type Input - Do Not Alter"]
[{"$f":"IF(B41=\"Detached\",\"Single Family\",IF(OR(B41=\"Semi-Detached / Townhome\"),\"Townhome\",B41))","v":"Townhome"}]

{"sheet":"Physical Outputs","index":8,"n_rows":61,"n_cols":7,"rows_kept":61,"cut":false,"hidden":true,"merged":[]}
["Physical Stats"]
["Housing Units / Hotel Rooms",{"$f":"'Physical Outputs'!D39","v":1.9999999999999993}]
["Jobs",{"$f":"'Physical Outputs'!E39","v":0}]
[{"$f":"\"Net Rentable/Sellable \"&'Metric Translation'!B7","v":"Net Rentable/Sellable Square Feet"},{"$f":"'Physical Outputs'!C39-'Physical Outputs'!C38","v":3199.9999999999991}]
[{"$f":"\"Housing / Hotel Room Density (Per \"&'Metric Translation'!B10&\")\"","v":"Housing / Hotel Room Density (Per Acre)"},{"$f":"'Physical Outputs'!F39","v":19.359999999999992}]
[{"$f":"\"Job Density (Per \"&'Metric Translation'!B10&\")\"","v":"Job Density (Per Acre)"},{"$f":"'Physical Outputs'!G39","v":0}]
["FAR ◊",{"$f":"'Physical Outputs'!B39/'Physical Inputs'!B34","v":0.71111111111111092}]
["FAR (Excluding Internal Parking)",{"$f":"SUM('Physical Outputs'!B29:B35)/'Physical Inputs'!B34","v":0.71111111111111092}]
["Financial Stats"]
["Rental (Residential and Commercial)","Target Return","Actual Return"]
["IRR on Project Cost (Unleveraged Return)",{"$f":"'Mixed-Use Summary'!N6","v":0.12},{"$f":"'Mixed-Use Summary'!P6","v":0}]
["Cash-on-Cash (After Year 3)",{"$f":"'Mixed-Use Summary'!N5","v":0.12},{"$f":"'Mixed-Use Summary'!P5","v":0}]
["IRR on Investor Equity (Leveraged Return Before Tax)",{"$f":"'Mixed-Use Summary'!N7","v":0.25},{"$f":"'Mixed-Use Summary'!P7","v":0}]
["Debt Service Coverage Ratio (Year 3)",{"$f":"'Mixed-Use Summary'!N8","v":1.25},{"$f":"'Mixed-Use Summary'!P8","v":0}]
["IRR on Public Participation",{"$f":"'Mixed-Use Summary'!N9","v":0.05},{"$f":"'Mixed-Use Summary'!P9","v":0}]
["Owner Residential","Target Return","Actual Return"]
["Project Rate of Return",{"$f":"'Mixed-Use Summary'!T5","v":0.2},{"$f":"IF('Physical Inputs'!$B$42=\"Owner\",'Mixed-Use Summary'!V5,\"N/A\")","v":0.19735438905370878}]
["Return to Equity",{"$f":"'Mixed-Use Summary'!T6","v":0.75},{"$f":"IF('Physical Inputs'!$B$42=\"Owner\",'Mixed-Use Summary'!V6,\"N/A\")","v":0.98677194526854406}]
["Physical Outputs"]
["Site-Level Outputs"]
["Building Footprint",{"$f":"C21/SUM($C$21:$C$24)","v":0.35555555555555546},{"$f":"'Building Envelope Calculator'!B164","v":1599.9999999999995},{"$f":"'Metric Translation'!$B$5","v":"sf"}]
["Landscaping or Open Space",{"$f":"C22/SUM($C$21:$C$24)","v":0.50444444444444458},{"$f":"'Building Envelope Calculator'!B165","v":2270.0000000000005},{"$f":"'Metric Translation'!$B$5","v":"sf"}]
["Parking Area",{"$f":"C23/SUM($C$21:$C$24)","v":0.13999999999999999},{"$f":"'Building Envelope Calculator'!B166","v":629.99999999999989},{"$f":"'Metric Translation'!$B$5","v":"sf"}]
["Shared Driveway Area",{"$f":"C24/SUM($C$21:$C$24)","v":0},{"$f":"PI_SiteArea*(1-PI_GrossToNet)","v":0}]
["Useable building total ◊","-",{"$f":"B39","v":3199.9999999999991},{"$f":"'Metric Translation'!$B$5","v":"sf"}]
[]
["Land Use Outputs"]
[{"$f":"'Metric Translation'!B9&\" by Use\"","v":"Square Footage by Use"},{"$f":"\"Gross \"&'Metric Translation'!B7&\" ◊\"","v":"Gross Square Feet ◊"},{"$f":"\"Net \"&'Metric Translation'!B7&\" ◊\"","v":"Net Square Feet ◊"},"Total Dwelling Units or Hotel/Motel Rooms ◊","Total Jobs ◊",{"$f":"\"DU/\"&'Metric Translation'!B10&\" ◊\"","v":"DU/Acre ◊"},{"$f":"\"Jobs/\"&'Metric Translation'!B10&\" ◊\"","v":"Jobs/Acre ◊"}]
[{"$f":"'Physical Inputs'!A41","v":"Residential"},{"$f":"'Building Envelope Calculator'!B138","v":3199.9999999999991},{"$f":"B29*'Building Envelope Calculator'!B12","v":3199.9999999999991},{"$f":"IF('Physical Inputs'!B62=0,0,C29/'Physical Inputs'!B62)","v":1.9999999999999993},null,{"$f":"D29/'Physical Inputs'!$C$34","v":19.359999999999992}]
["Retail",{"$f":"'Building Envelope Calculator'!B139","v":0},{"$f":"B30*'Advanced Financial'!B25","v":0},null,{"$f":"IF('Physical Inputs'!B65=0,0,B30/'Physical Inputs'!B65)*AF_RetOccup","v":0},null,{"$f":"E30/'Physical Inputs'!$C$34","v":0}]
["Office",{"$f":"'Building Envelope Calculator'!B140","v":0},{"$f":"B31*'Advanced Financial'!B26","v":0},null,{"$f":"IF('Physical Inputs'!B66=0,0,B31/'Physical Inputs'!B66)*AF_OffOccup","v":0},null,{"$f":"E31/'Physical Inputs'!$C$34","v":0}]
["Industrial",{"$f":"'Building Envelope Calculator'!B141","v":0},{"$f":"B32*'Advanced Financial'!B27","v":0},null,{"$f":"IF('Physical Inputs'!B67=0,0,B32/'Physical Inputs'!B67)*AF_IndOccup","v":0},null,{"$f":"E32/'Physical Inputs'!$C$34","v":0}]
["Public",{"$f":"'Building Envelope Calculator'!B142","v":0},{"$f":"B33*'Advanced Financial'!B28","v":0},null,{"$f":"IF('Physical Inputs'!B68=0,0,B33/'Physical Inputs'!B68)*AF_PubOccup","v":0},null,{"$f":"E33/'Physical Inputs'!$C$34","v":0}]
["Educational",{"$f":"'Building Envelope Calculator'!B143","v":0},{"$f":"B34*'Advanced Financial'!B29","v":0},null,{"$f":"IF('Physical Inputs'!B69=0,0,B34/'Physical Inputs'!B69)","v":0},null,{"$f":"E34/'Physical Inputs'!$C$34","v":0}]
["Hotel/Motel",{"$f":"'Building Envelope Calculator'!B144","v":0},{"$f":"B35*'Advanced Financial'!B23","v":0},{"$f":"IF('Physical Inputs'!B71=0,0,C35/'Physical Inputs'!C71)","v":0},{"$f":"IF('Physical Inputs'!B70=0,0,B35/'Physical Inputs'!B70)","v":0},{"$f":"D35/'Physical Inputs'!$C$34","v":0},{"$f":"E35/'Physical Inputs'!$C$34","v":0}]
["Commercial Parking",{"$f":"'Building Envelope Calculator'!B145","v":0},{"$f":"B36*'Advanced Financial'!B24","v":0},{"$f":"IF('Physical Inputs'!B73=0,0,C36/'Physical Inputs'!B73)","v":0},{"$f":"IF('Physical Inputs'!B72=0,0,B36/'Physical Inputs'!B72)","v":0},{"$f":"D36/'Physical Inputs'!$C$34","v":0},{"$f":"E36/'Physical Inputs'!$C$34","v":0}]
["Structured Parking",{"$f":"'Building Envelope Calculator'!B192-'Building Envelope Calculator'!C192","v":0},{"$f":"'Building Envelope Calculator'!B192-'Building Envelope Calculator'!C192","v":0}]
["Internal Parking",{"$f":"'Building Envelope Calculator'!B146","v":0},{"$f":"B38","v":0}]
["Total",{"$f":"SUM(B29:B38)","v":3199.9999999999991},3199.9999999999991,1.9999999999999993,0,19.359999999999992,0]
[]
["Parking Outputs"]
[{"$f":"\"Parking spaces per 1,000 \"&'Metric Translation'!B5&\" of development\"","v":"Parking spaces per 1,000 sf of development"},{"$f":"B61/(SUM(B29:B36)/1000)","v":0.62499999999999989}]
[]
["Parking Spaces by Land Use","Spaces Required","Parking Area"]
["Market-Rate Residential",{"$f":"'Building Envelope Calculator'!C138","v":1.9999999999999993},{"$f":"'Physical Outputs'!B45*'Physical Inputs'!$C$100","v":629.99999999999977},{"$f":"'Metric Translation'!$B$5","v":"sf"}]
["Retail",{"$f":"'Building Envelope Calculator'!C139","v":0},{"$f":"'Physical Outputs'!B46*'Physical Inputs'!$C$100","v":0},{"$f":"'Metric Translation'!$B$5","v":"sf"}]
["Office",{"$f":"'Building Envelope Calculator'!C140","v":0},{"$f":"'Physical Outputs'!B47*'Physical Inputs'!$C$100","v":0},{"$f":"'Metric Translation'!$B$5","v":"sf"}]
["Industrial",{"$f":"'Building Envelope Calculator'!C141","v":0},{"$f":"'Physical Outputs'!B48*'Physical Inputs'!$C$100","v":0},{"$f":"'Metric Translation'!$B$5","v":"sf"}]
["Public",{"$f":"'Building Envelope Calculator'!C142","v":0},{"$f":"'Physical Outputs'!B49*'Physical Inputs'!$C$100","v":0},{"$f":"'Metric Translation'!$B$5","v":"sf"}]
["Educational",{"$f":"'Building Envelope Calculator'!C143","v":0},{"$f":"'Physical Outputs'!B50*'Physical Inputs'!$C$100","v":0},{"$f":"'Metric Translation'!$B$5","v":"sf"}]
["Hotel/Motel",{"$f":"'Building Envelope Calculator'!C144","v":0},{"$f":"'Physical Outputs'!B51*'Physical Inputs'!$C$100","v":0},{"$f":"'Metric Translation'!$B$5","v":"sf"}]
["Commercial Parking",{"$f":"'Building Envelope Calculator'!C145","v":0},{"$f":"'Physical Outputs'!B52*'Physical Inputs'!$C$100","v":0},{"$f":"'Metric Translation'!$B$5","v":"sf"}]
["Total",{"$f":"SUM(B45:B52)","v":1.9999999999999993},{"$f":"SUM(C45:C52)","v":629.99999999999977},{"$f":"'Metric Translation'!$B$5","v":"sf"}]
[]
["Parking Spaces by Type"]
[{"$f":"'Basic Financial'!A67","v":"Surface"},{"$f":"IFERROR('Building Envelope Calculator'!B170*'Building Envelope Calculator'!C192/'Building Envelope Calculator'!B192,0)","v":1.9999999999999993}]
[{"$f":"'Basic Financial'!A68","v":"Structured (above ground)"},{"$f":"IFERROR('Building Envelope Calculator'!B170*B37/'Building Envelope Calculator'!B192,0)","v":0}]
[{"$f":"'Basic Financial'!A69","v":"Underground"},{"$f":"'Building Envelope Calculator'!B171","v":0}]
["Commercial Parking",{"$f":"'Building Envelope Calculator'!B172","v":0}]
[{"$f":"'Basic Financial'!A70","v":"Internal (Tuck Under or Sandwich)"},{"$f":"'Building Envelope Calculator'!B173","v":0}]
["Total",{"$f":"SUM(B56:B60)","v":1.9999999999999993},"spaces"]

{"sheet":"Basic Financial","index":9,"n_rows":80,"n_cols":6,"rows_kept":80,"cut":false,"hidden":true,"merged":[[35,3,35,4],[32,3,32,4],[32,1,32,2],[19,3,19,4]]}
["Physical Stats"]
["Housing Units / Hotel Rooms",{"$f":"'Physical Outputs'!D39","v":1.9999999999999993}]
["Jobs",{"$f":"'Physical Outputs'!E39","v":0}]
[{"$f":"\"Net Rentable/Sellable \"&'Metric Translation'!B7","v":"Net Rentable/Sellable Square Feet"},{"$f":"'Physical Outputs'!C39-'Physical Outputs'!C38","v":3199.9999999999991}]
[{"$f":"\"Housing / Hotel Room Density (Per \"&'Metric Translation'!B10&\")\"","v":"Housing / Hotel Room Density (Per Acre)"},{"$f":"'Physical Outputs'!F39","v":19.359999999999992}]
[{"$f":"\"Job Density (Per \"&'Metric Translation'!B10&\")\"","v":"Job Density (Per Acre)"},{"$f":"'Physical Outputs'!G39","v":0}]
["FAR ◊",{"$f":"'Physical Outputs'!B39/'Physical Inputs'!B34","v":0.71111111111111092}]
["FAR (Excluding Internal Parking)",{"$f":"SUM('Physical Outputs'!B29:B35)/'Physical Inputs'!B34","v":0.71111111111111092}]
["Financial Stats"]
["Rental (Residential and Commercial)","Target Return","Actual Return"]
["IRR on Project Cost (Unleveraged Return)",{"$f":"'Mixed-Use Summary'!N6","v":0.12},{"$f":"'Mixed-Use Summary'!P6","v":0}]
["Cash-on-Cash (After Year 3)",{"$f":"'Mixed-Use Summary'!N5","v":0.12},{"$f":"'Mixed-Use Summary'!P5","v":0}]
["IRR on Investor Equity (Leveraged Return Before Tax)",{"$f":"'Mixed-Use Summary'!N7","v":0.25},{"$f":"'Mixed-Use Summary'!P7","v":0}]
["Debt Service Coverage Ratio (Year 3)",{"$f":"'Mixed-Use Summary'!N8","v":1.25},{"$f":"'Mixed-Use Summary'!P8","v":0}]
["IRR on Public Participation",{"$f":"'Mixed-Use Summary'!N9","v":0.05},{"$f":"'Mixed-Use Summary'!P9","v":0}]
["Owner Residential","Target Return","Actual Return"]
["Project Rate of Return",{"$f":"'Mixed-Use Summary'!T5","v":0.2},{"$f":"IF('Physical Inputs'!$B$42=\"Owner\",'Mixed-Use Summary'!V5,\"N/A\")","v":0.19735438905370878}]
["Return to Equity",{"$f":"'Mixed-Use Summary'!T6","v":0.75},{"$f":"IF('Physical Inputs'!$B$42=\"Owner\",'Mixed-Use Summary'!V6,\"N/A\")","v":0.98677194526854406}]
["Basic Financial Inputs"]
[{"$f":"\"Construction Costs Per \"&'Metric Translation'!B8&\" or Per Space (Core, Shell and Improvements) ◊\"","v":"Construction Costs Per Square Foot or Per Space (Core, Shell and Improvements) ◊"},null,null,"Balance Return on Investment ◊"]
["Residential",{"$f":"IF('Physical Outputs'!D39<=1.1,SUMPRODUCT('Physical Inputs'!C56:C60,Assumptions!$B$2:$B$6),IF('Physical Outputs'!D39<=2.1,SUMPRODUCT('Physical Inputs'!C56:C60,Assumptions!$C$2:$C$6),IF('Physical Outputs'!D39<=3.1,SUMPRODUCT('Physical Inputs'!C56:C60,Assumptions!$D$2:$D$6),SUMPRODUCT('Physical Inputs'!C56:C60,Assumptions!$E$2:$E$6))))","v":261}]
["Retail"]
["Office"]
["Industrial"]
["Public"]
["Educational"]
["Hotel/Motel"]
["Commercial Parking (Per Space) ◊"]
[]
["Land / Site Cost",{"$f":"'Metric Translation'!B15&\" / \"&'Metric Translation'!B5","v":"$ / sf"},"Total"]
[{"$f":"\"Site Cost per \"&'Metric Translation'!B8&\" ◊\"","v":"Site Cost per Square Foot ◊"},{"$f":"Lists!F27","v":40},{"$f":"B31*PI_SiteArea","v":180000},null,null,{"$f":"Lists!F27","v":40}]
[]
["Subsidy","Development Offsets ◊",null,"Potential Public Revenue ◊"]
["Test Subsidy ◊",null,"% of Total Project Cost",{"$f":"\"10-Year \"&'Metric Translation'!B21&\" ◊\"","v":"10-Year Property Taxes ◊"},{"$f":"'Metric Translation'!B23&\" ◊\"","v":"Fees / SDCs ◊"}]
["Detailed Subsidy (from Leveraging Tools tab)",{"$f":"'Mixed-Use Summary'!J17+'Mixed-Use Summary'!H66+IF(OR(BF_Subsidy=0,BF_Subsidy=\"\"),SUM('Mixed-Use Summary'!C96:L101),0)","v":0},{"$f":"IFERROR(B35/-B78,0)","v":0},{"$f":"SUM('Mixed-Use Summary'!C95:L95)+SUM('Residential Owner'!E54:N54)","v":168587.8091544885},{"$f":"-'Development Costs'!E28-'Development Costs'!E29","v":41759.999999999993}]
[null,null,null,{"$f":"SUM(D35:E35)","v":210347.8091544885}]
[]
["Below-Market Rent Calculator",{"$f":"IF('Physical Inputs'!B25=\"Metric\",\"Open-Market Rent\",\"AMI\")","v":"AMI"},"Below-Market Unit Mix",{"$f":"IF('Physical Inputs'!B25=\"Metric\",\"Percent of Open-Market Rent\",\"Percent of AMI\")","v":"Percent of AMI"},"Below-Market Rent"]
[{"$f":"IF('Physical Inputs'!B25=\"Metric\",\"Intermediate Rent\",\"Income-Restricted\")","v":"Income-Restricted"},60000,0.1,1,{"$f":"IF('Physical Inputs'!$B$22=\"Metric\",BF_AMI*D39,(BF_AMI*D39/12)*0.3)","v":1500}]
[{"$f":"IF('Physical Inputs'!B25=\"Metric\",\"Social Rent\",\"Low Income\")","v":"Low Income"},"-",0,0,{"$f":"IF('Physical Inputs'!$B$22=\"Metric\",BF_AMI*D40,(BF_AMI*D40/12)*0.3)","v":0}]
[{"$f":"IF('Physical Inputs'!B25=\"Metric\",\"Affordable Rent\",\"Very Low Income\")","v":"Very Low Income"},"-",0,0,{"$f":"IF('Physical Inputs'!$B$22=\"Metric\",BF_AMI*D41,(BF_AMI*D41/12)*0.3)","v":0}]
["Calculated Below-Market Rent","-",{"$f":"SUM(C39:C41)","v":0.1},"-",{"$f":"E39","v":1500}]
[]
["Residential Rent (Rental) ◊",{"$f":"'Metric Translation'!B15&\" / \"&'Metric Translation'!B5","v":"$ / sf"},"Unit Size","Parking Cost / Mo ◊","Rent"]
[{"$f":"'Physical Inputs'!A55","v":"Affordable"},{"$f":"IFERROR(E45/C45,0)","v":0},{"$f":"'Physical Inputs'!B55","v":0},0,{"$f":"E42+D45","v":1500}]
[{"$f":"'Physical Inputs'!A56","v":"4+ Bedroom"},{"$f":"B49*0.85","v":456.875},{"$f":"'Physical Inputs'!B56","v":0},0,{"$f":"(C46*B46)+D46","v":0}]
[{"$f":"'Physical Inputs'!A57","v":"3 Bedroom"},{"$f":"B48*0.9","v":459.5625},{"$f":"'Physical Inputs'!B57","v":0},0,{"$f":"(C47*B47)+D47","v":0}]
[{"$f":"'Physical Inputs'!A58","v":"2 Bedroom"},{"$f":"B49*0.95","v":510.625},{"$f":"'Physical Inputs'!B58","v":1600},0,{"$f":"(C48*B48)+D48","v":817000}]
[{"$f":"'Physical Inputs'!A59","v":"1 Bedroom"},{"$f":"Lists!D27","v":537.5},{"$f":"'Physical Inputs'!B59","v":0},0,{"$f":"(C49*B49)+D49","v":0}]
[{"$f":"'Physical Inputs'!A60","v":"Studio"},{"$f":"B49*1.05","v":564.375},{"$f":"'Physical Inputs'!B60","v":0},0,{"$f":"(C50*B50)+D50","v":0}]
["Calculated Average Monthly Rent",{"$f":"(SUMPRODUCT(B45:B50,'Physical Inputs'!C55:C60))","v":459.5625},{"$f":"IFERROR(PI_AvgUnitsize,0)","v":1600},{"$f":"SUMPRODUCT(D45:D50,'Physical Inputs'!C55:C60)","v":0},{"$f":"C51*B52+D51","v":735300}]
["Monthly Rent per Square Foot",{"$f":"BF_CalcAvgRent","v":459.5625},null,null,null,{"$f":"BF_CalcAvgRent","v":459.5625}]
[]
["Residential Sale Price (Owner) ◊",{"$f":"'Metric Translation'!B15&\" / \"&'Metric Translation'!B5","v":"$ / sf"},"Unit Size","Sales Price"]
["Sale Price per Square Foot",{"$f":"Lists!C27","v":459.5625},{"$f":"'Physical Inputs'!B62","v":1600},{"$f":"B55*'Physical Inputs'!B62","v":735300},null,{"$f":"Lists!C27","v":459.5625}]
[null,null,null,null," "]
[{"$f":"\"Commercial Rent per \"&'Metric Translation'!B8&\" (Except Hotel/Motel and Commercial Parking) ◊\"","v":"Commercial Rent per Square Foot (Except Hotel/Motel and Commercial Parking) ◊"}]
["Retail",18,"Annual, Triple Net"]
["Office",22,"Annual, Triple Net"]
["Industrial",12,"Annual, Triple Net"]
["Public",14,"Annual, Triple Net"]
["Educational",14,"Annual, Triple Net"]
["Hotel/Motel",150,"Daily, Average Room Rate"]
["Commercial Parking ◊",4,"Hourly, Average per Space"]
[]
["Parking Costs Per Space ◊"]
["Surface",{"$f":"3000*(16000/15000)","v":3200}]
["Structured (above ground)",16000]
["Underground",{"$f":"35000*(16000/15000)","v":37333.333333333336}]
["Internal (Tuck Under or Sandwich)",{"$f":"20000*(16000/15000)","v":21333.333333333332}]
["Mechanical",55000]
[]
["Basic Financial Outputs","Total","Percent of Total"]
["Building Construction (Hard Costs) ◊",{"$f":"SUM('Development Costs'!E12:E23,'Development Costs'!E25)","v":-885199.99999999977},{"$f":"B74/$B$78","v":0.72072494572986745}]
["Parking Construction (Hard Costs) ◊",{"$f":"'Development Costs'!E24","v":-6399.9999999999982},{"$f":"B75/$B$78","v":5.2108446144048257E-3}]
["Buidling Soft Costs",{"$f":"SUM('Development Costs'!E4:E7,'Development Costs'!E28:E35)","v":-156607.79999999999},{"$f":"B76/$B$78","v":0.12750920487559192}]
["Land",{"$f":"'Development Costs'!E8","v":-180000},{"$f":"B77/$B$78","v":0.14655500478013575}]
["Total Project Costs ◊",{"$f":"'Development Costs'!E37","v":-1228207.7999999998},{"$f":"SUM(C74:C77)","v":0.99999999999999989}]
[]
[null,{"$f":"SUM(B74:B76)/'Physical Outputs'!B39","v":-327.56493750000004}]

{"sheet":"Advanced Financial","index":10,"n_rows":93,"n_cols":8,"rows_kept":93,"cut":false,"hidden":true,"merged":[[73,0,73,1],[74,0,74,1],[66,0,66,1],[67,0,67,1],[68,0,68,1],[69,0,69,1],[70,0,70,1]]}
["Physical Stats"]
["Housing Units / Hotel Rooms",{"$f":"'Physical Outputs'!D39","v":1.9999999999999993}]
["Jobs",{"$f":"'Physical Outputs'!E39","v":0}]
[{"$f":"\"Net Rentable/Sellable \"&'Metric Translation'!B7","v":"Net Rentable/Sellable Square Feet"},{"$f":"'Physical Outputs'!C39-'Physical Outputs'!C38","v":3199.9999999999991}]
[{"$f":"\"Housing / Hotel Room Density (Per \"&'Metric Translation'!B10&\")\"","v":"Housing / Hotel Room Density (Per Acre)"},{"$f":"'Physical Outputs'!F39","v":19.359999999999992}]
[{"$f":"\"Job Density (Per \"&'Metric Translation'!B10&\")\"","v":"Job Density (Per Acre)"},{"$f":"'Physical Outputs'!G39","v":0}]
["FAR ◊",{"$f":"'Physical Outputs'!B39/'Physical Inputs'!B34","v":0.71111111111111092}]
["FAR (Excluding Internal Parking)",{"$f":"SUM('Physical Outputs'!B29:B35)/'Physical Inputs'!B34","v":0.71111111111111092}]
["Financial Stats"]
["Rental (Residential and Commercial)","Target Return","Actual Return"]
["IRR on Project Cost (Unleveraged Return)",{"$f":"'Mixed-Use Summary'!N6","v":0.12},{"$f":"'Mixed-Use Summary'!P6","v":0}]
["Cash-on-Cash (After Year 3)",{"$f":"'Mixed-Use Summary'!N5","v":0.12},{"$f":"'Mixed-Use Summary'!P5","v":0}]
["IRR on Investor Equity (Leveraged Return Before Tax)",{"$f":"'Mixed-Use Summary'!N7","v":0.25},{"$f":"'Mixed-Use Summary'!P7","v":0}]
["Debt Service Coverage Ratio (Year 3)",{"$f":"'Mixed-Use Summary'!N8","v":1.25},{"$f":"'Mixed-Use Summary'!P8","v":0}]
["IRR on Public Participation",{"$f":"'Mixed-Use Summary'!N9","v":0.05},{"$f":"'Mixed-Use Summary'!P9","v":0}]
["Owner Residential","Target Return","Actual Return"]
["Project Rate of Return",{"$f":"'Mixed-Use Summary'!T5","v":0.2},{"$f":"IF('Physical Inputs'!$B$42=\"Owner\",'Mixed-Use Summary'!V5,\"N/A\")","v":0.19735438905370878}]
["Return to Equity",{"$f":"'Mixed-Use Summary'!T6","v":0.75},{"$f":"IF('Physical Inputs'!$B$42=\"Owner\",'Mixed-Use Summary'!V6,\"N/A\")","v":0.98677194526854406}]
["Advanced Financial Inputs"]
["Building Efficiency"]
[{"$f":"\"Net-to-Gross \"&'Metric Translation'!B9&\" (% Rentable) ◊\"","v":"Net-to-Gross Square Footage (% Rentable) ◊"},null,"Notes/Data Source"]
["Residential",0.9,"100% will automatically be used for single family (detached), duplex or townhome buildings (semi-detached or terraced)."]
["Hotel/Motel",0.85]
["Commercial Parking",0.95]
["Retail",0.85]
["Office",0.85]
["Industrial",0.85]
["Public",0.85]
[]
["Occupancy Rate (%) ◊","Rate in Year 1 ◊","Long-Term Rate ◊","Notes/Data Source"]
["Residential",{"$f":"IF(Dashboard!D23-Assumptions!B19>=12,0,IF(Dashboard!D23-Assumptions!B19<=0,0.95,0.95-(0.95*((Dashboard!C23-Assumptions!B19)/12))))","v":0.95},{"$f":"IF(Dashboard!C23-Assumptions!B19<12,Assumptions!B27,Assumptions!B27-(Assumptions!B27*(((Dashboard!C23-12-Assumptions!B19)/12)/9)))","v":0.95}]
["Hotel/Motel",null,0.75,"Average daily occupancy"]
["Retail",0.95,0.95]
["Office",0.95,0.95]
["Industrial",0.95,0.95]
["Commercial Parking ◊",null,0.7,"Average daily occupancy (12 hrs)"]
["Public",null,0.95]
[]
["Pre Development Costs ◊",null,"Notes/Data Source"]
["Due diligence  ◊",0,"Enter manually if applicable"]
["Land carry (% of raw land cost)",0.05,"Expert interviews"]
["Land entitlement / legal fees (% raw land)",0.02,"Expert interviews"]
["Professional fees (% of hard costs)",0.05,"Expert interviews"]
[]
["Development Costs ◊",null,"Notes/Data Source"]
["Demolition costs (total)",{"$f":"Assumptions!B14","v":50000},"Enter manually if applicable"]
[{"$f":"\"Site development costs (per \"&'Metric Translation'!B5&\")\"","v":"Site development costs (per sf)"},0,"Enter manually if applicable"]
[{"$f":"\"Brownfield remediation costs (per \"&'Metric Translation'!B5&\" of site area)\"","v":"Brownfield remediation costs (per sf of site area)"},0,"Enter manually if applicable"]
["Additional infrastructure enhancement costs (total)",null,"Enter manually if applicable"]
[]
["Indirect Costs ◊",null,"Notes/Data Source"]
[{"$f":"'Metric Translation'!B24","v":"Impact Fees (per Unit)"},0,"Enter manually"]
[{"$f":"'Metric Translation'!B25","v":"Impact Fees (per Job)"},0,"Enter manually","remove"]
[{"$f":"'Metric Translation'!B26","v":"Impact Fees (per sqft of Employment Area) ◊"},0,"Enter manually"]
[{"$f":"'Metric Translation'!B29","v":"Additonal Impact Fees (Total for Project) ◊"},{"$f":"-'Development Costs'!E15*Lists!L27","v":41759.999999999993},"Enter manually"]
[{"$f":"'Metric Translation'!B27","v":"Building Permit Fees"},0,"Enter manually"]
["Taxes during construction (% raw land)",0.01,"Expert interviews"]
["Insurance during construction (% of building costs)",0.01,"Expert interviews"]
["Developer fee",0,"Expert interviews"]
["Contingency",{"$f":"Assumptions!B18","v":0.05},"Expert interviews"]
[]
[{"$f":"'Metric Translation'!B21","v":"Property Taxes"},"Residential (Owner)","Residential (Rental)","Hotel/Motel","Retail","Office","Industrial","Commercial Parking"]
[{"$f":"'Metric Translation'!B22&\" Rate (% of project value: building + land)\"","v":"Property Tax Rate (% of project value: building + land)"},{"$f":"Assumptions!B15","v":0.01},{"$f":"Assumptions!B15","v":0.01},0,0,9.6266900000000002E-3,0,0]
["Assessment Ratio (Assessment Value / Market Value)",1,1,1,1,1,1,1]
[]
["Financial Targets",null,"Residential (Rental)","Hotel/Motel","Retail","Office","Industrial","Commercial Parking"]
["Cash-on-Cash (After Year 3)",null,0.12,0.1,0.1,0.1,0.1,0.1]
["IRR on Project Cost (Unleveraged Return)",null,0.12,0.1,0.1,0.1,0.1,0.1]
["IRR on Investor Equity (Leveraged Return Before Tax)",null,0.25,0.25,0.25,0.25,0.25,0.25]
["Debt Service Coverage Ratio (Year 3)",null,1.25,1.25,1.25,1.25,1.25,1.25]
["IRR on Public Participation",null,0.05,0.05,0.05,0.05,0.05,0.05]
[]
[null,null,"Residential (Owner)"]
["Project Rate of Return",null,0.2]
["Return to Equity",null,0.75]
[]
["Financial Assumptions","Residential (Owner)","Residential (Rental)","Hotel/Motel","Retail","Office","Industrial","Commercial Parking ◊"]
[{"$f":"\"Projected retail sales per \"&'Metric Translation'!B5&\" (retail only)\"","v":"Projected retail sales per sf (retail only)"},null,null,null,0]
["% of sales to rent (retail only)",null,null,null,0]
["Other income (vending, fines)",null,0.01]
["Concessions and bad debt",null,0.02]
["Operating costs (per unit, % of GPI, or per space) ◊",null,{"$f":"Assumptions!B17","v":0.1}]
["Going in cap rate",null,0.04]
["Gross potential income - escalation",null,{"$f":"Assumptions!B25","v":0.03}]
["Operating costs - escalation",null,0.03]
["Property value - annual appreciation",0.03,{"$f":"Assumptions!B26","v":0.03}]
["Terminal cap rate, gross sales price",null,{"$f":"Assumptions!B24","v":4.4999999999999998E-2}]
["Net sales = price less sales cost",null,0.05]
[]
["Primary Debt","Residential (Owner)","Residential (Rental)","Hotel/Motel","Retail","Office","Industrial","Commercial Parking"]
["Maximum LTV",0.8,0.8,0.7,0.7,0.7,0.7,0.7]
["Interest rate",null,{"$f":"Assumptions!B23","v":0.06},0.06,0.06,0.06,0.06,0.06]
["Amortization period - years",null,{"$f":"Assumptions!B22","v":30},25,25,25,25,25]

{"sheet":"Fixed Parameters","index":11,"n_rows":117,"n_cols":23,"rows_kept":117,"cut":false,"hidden":true,"merged":[]}
["MIXED USE TRIP GENERATION MODEL V4 - FIXED MODEL PARAMETERS"]
["These include coefficients for the model equations, and NCHRP trip distribution factors.  These items cannot be changed by the user."]
[]
["Model Coefficients"]
[]
["Internal Capture Probability Model Coefficients"]
[]
["Variable","HBW","HBO","NHB",null,"Avg Value"]
["Constant",-3.62,-2.68,-1.87]
["ln(Employment within the MXD)",null,null,0.20799999999999999,null,6.7]
["ln(MXD Area in Square Miles)",null,0.48599999999999999,0.46800000000000003,null,-1.59]
["ln(Jobs / Population Diversity - index of jobs/population ratio compared to 0.2)",0.38900000000000001,0.39900000000000002,null,null,-1.44]
["ln(Number of intersections per square mile within the MXD)",null,0.38500000000000001,0.63800000000000001,null,5.31]
["ln(Average Household Size Within the MXD)",-1.33,-0.86699999999999999,-0.23699999999999999,null,0.85]
["ln(Vehicles Owned per Capita within the MXD)",-0.99,-0.59,-0.16300000000000001,null,-0.28000000000000003]
[]
[]
["Walking Trip Probability Model Coefficients"]
[]
["Variable","HBW","HBO","NHB"]
["Constant",-3.98,-3.41,-3.63]
["ln(MXD Area in Square Miles)",null,-0.39100000000000001,null,null,-1.59]
["ln(Population + Employment per square mile within the MXD)",null,0.32900000000000001,0.377,null,9.2799999999999994]
["ln(Jobs / Population Diversity - index of jobs/population ratio compared to 0.2)",0.22600000000000001,null,null,null,-1.44]
["ln(Retail jobs / Population Diversity - index of retail jobs/population ratio compared to 0.05)",null,0.20499999999999999,null,null,-1.43]
["ln(Number of intersections per square mile within the MXD)",null,null,0.80300000000000005,null,5.31]
["ln(Employment in thousands within 1 mile of the MXD outside the MXD itself)",0.38500000000000001,0.44400000000000001,0.44,null,2.44]
["ln(Average Household Size Within the MXD)",-1.57,-0.48699999999999999,-0.28100000000000003,null,0.85]
["ln(Vehicles Owned per Capita within the MXD)",-1.84,-0.76700000000000002,-0.24199999999999999,null,-0.28000000000000003]
[]
[]
["Transit Trip Probability Model Coefficients"]
[]
["Variable","HBW","HBO","NHB"]
["Constant",-4.2300000000000004,-4.97,-4.4000000000000004]
["ln(Employment within the MXD)",0.246,null,null,null,6.7]
["ln(Number of intersections per square mile within the MXD)",1.34,null,null,null,5.31]
["ln(Employment in thousands within a 30 minute trip of the MXD by transit)",0.16,0.29399999999999998,0.249,null,8.41]
["ln(Average Household Size Within the MXD)",-1.1499999999999999,-1.04,null,null,0.85]
["ln(Vehicles Owned per Capita within the MXD)",-1.68,-1.05,-0.27600000000000002,null,-0.28000000000000003]
[]
["Trip Purpose Data from NCHRP 365"]
[]
["PRODUCTIONS",null,"% Average Daily Person Trips by Purpose"]
["Area Type","Productions per HH","HBW","HBO","NHB"]
["Urban 50,000 to 199,999",9.1999999999999993,0.2,0.56999999999999995,0.23]
["Urban 200,000 to 499,999",9,0.21,0.56000000000000005,0.23]
["Urban 500,000 to 999,999",8.6999999999999993,0.22,0.56000000000000005,0.22]
["Urban 1,000,000+",8.5,0.21,0.56000000000000005,0.23]
["Average Data (not varying by MPO Type)",8.85,0.21,0.5625,0.22750000000000001]
[]
["ATTRACTIONS",null,"Number of Daily Person Trips by Purpose"]
["Per HH",null,0,0.9,0.5]
["Per Retail Emp CBD",null,1.45,2,1.4]
["Per Retail Emp Non-CBD",null,1.45,9,4.0999999999999996]
["Per Service Emp (Office)",null,1.45,1.7,1.2]
["Per Other Emp (Industrial)",null,1.45,0.5,0.5]
[]
["Time of Day Factors by Trip Purpose from NCHRP 365"]
[null,null,"AM Peak Hour (7-8 AM)",null,null,"PM Peak Hour (5-6 PM)"]
["Area Type",null,"HBW","HBO","NHB","HBW","HBO","NHB"]
["Urban 50,000 to 199,999",null,0.13569999999999999,5.5300000000000002E-2,2.07E-2,0.1066,7.3200000000000001E-2,8.5599999999999996E-2]
["Urban 200,000 to 499,999",null,0.14460000000000001,5.28E-2,1.3299999999999999E-2,0.12239999999999999,7.2300000000000003E-2,9.1999999999999998E-2]
["Urban 500,000 to 999,999",null,0.15210000000000001,5.2200000000000003E-2,1.83E-2,0.11169999999999999,7.2099999999999997E-2,0.1017]
["Urban 1,000,000+",null,0.1406,4.7899999999999998E-2,1.0500000000000001E-2,0.12039999999999999,7.3700000000000002E-2,9.01E-2]
["Average Data (not varying by MPO Type)",null,0.14324999999999999,5.2049999999999999E-2,1.5699999999999999E-2,0.115275,7.2825000000000001E-2,9.2350000000000002E-2]
[]
["NOTE: Only the average data line is being used, because the above percentages do not vary considerably among MPO types, and thus the user"]
["does not have to determine which MPO type the site is in."]
[]
["Trip Purpose Splits by Land Use: Schools"]
["Trip Productions","HBW","HBO","NHB"]
["DAILY",0,0,2.5000000000000001E-2]
["AM PEAK HOUR",0,0,2.5000000000000001E-2]
["PM PEAK HOUR",0,0,2.5000000000000001E-2]
[]
[null,"HBW","HBO","NHB"]
["DAILY",0.35,0.6,2.5000000000000001E-2]
["AM PEAK HOUR",0.35,0.6,2.5000000000000001E-2]
["PM PEAK HOUR",0.35,0.6,2.5000000000000001E-2]
[]
[]
["ITE Daily Parameters",null,null,null,null,null,null,"AM PEAK HOUR TRIP RATES",null,null,null,null,null,"PM PEAK HOUR TRIP RATES",null,null,null,null,null,null,"Valid Trip Gen Calc Choice?"]
["Code","Average Rate","Linear Multiplier","Linear Constant","Log Multipler","Log Constant",null,"Average Rate","Linear Multiplier","Linear Constant","Log Multipler","Log Constant",null,"Average Rate","Linear Multiplier","Linear Constant","Log Multipler","Log Constant",null,"Jobs Per Input Unit (if Applicable)","Daily","AM Peak Hour","PM Peak Hour"]
[]
[210,9.57,null,null,0.92,2.71,null,0.75,0.7,9.74,null,null,null,1.01,null,null,0.9,0.51,null,null,{"$f":"IF('Trip Generation'!E44=\"Linear Equation\",IF(C86=\"\",\"No\",\"Yes\"),IF('Trip Generation'!E44=\"Log Equation\",(IF(E86=\"\",\"No\",\"Yes\")),\"Yes\"))","v":"Yes"},{"$f":"IF('Trip Generation'!E44=\"Linear Equation\",IF(I86=\"\",\"No\",\"Yes\"),IF('Trip Generation'!E44=\"Log Equation\",(IF(K86=\"\",\"No\",\"Yes\")),\"Yes\"))","v":"Yes"},{"$f":"IF('Trip Generation'!E44=\"Linear Equation\",IF(O86=\"\",\"No\",\"Yes\"),IF('Trip Generation'!E44=\"Log Equation\",(IF(Q86=\"\",\"No\",\"Yes\")),\"Yes\"))","v":"Yes"}]
[220,6.65,6.06,123.56,null,null,null,0.51,0.49,3.73,null,null,null,0.62,0.55000000000000004,17.649999999999999,null,null,null,null,{"$f":"IF('Trip Generation'!E45=\"Linear Equation\",IF(C87=\"\",\"No\",\"Yes\"),IF('Trip Generation'!E45=\"Log Equation\",(IF(E87=\"\",\"No\",\"Yes\")),\"Yes\"))","v":"Yes"},{"$f":"IF('Trip Generation'!E45=\"Linear Equation\",IF(I87=\"\",\"No\",\"Yes\"),IF('Trip Generation'!E45=\"Log Equation\",(IF(K87=\"\",\"No\",\"Yes\")),\"Yes\"))","v":"Yes"},{"$f":"IF('Trip Generation'!E45=\"Linear Equation\",IF(O87=\"\",\"No\",\"Yes\"),IF('Trip Generation'!E45=\"Log Equation\",(IF(Q87=\"\",\"No\",\"Yes\")),\"Yes\"))","v":"Yes"}]
[232,4.18,3.77,223.66,null,null,null,0.34,0.28999999999999998,28.86,null,null,null,0.38,0.34,15.47,null,null,null,null,{"$f":"IF('Trip Generation'!E46=\"Linear Equation\",IF(C88=\"\",\"No\",\"Yes\"),IF('Trip Generation'!E46=\"Log Equation\",(IF(E88=\"\",\"No\",\"Yes\")),\"Yes\"))","v":"Yes"},{"$f":"IF('Trip Generation'!E46=\"Linear Equation\",IF(I88=\"\",\"No\",\"Yes\"),IF('Trip Generation'!E46=\"Log Equation\",(IF(K88=\"\",\"No\",\"Yes\")),\"Yes\"))","v":"Yes"},{"$f":"IF('Trip Generation'!E46=\"Linear Equation\",IF(O88=\"\",\"No\",\"Yes\"),IF('Trip Generation'!E46=\"Log Equation\",(IF(Q88=\"\",\"No\",\"Yes\")),\"Yes\"))","v":"Yes"}]
[]
[]
[820,42.94,null,null,0.65,5.83,null,1,null,null,0.59,2.3199999999999998,null,3.73,null,null,0.67,3.37,null,{"$f":"IFERROR('Physical Outputs'!E$30/('Physical Outputs'!B$30/1000),0)","v":0},{"$f":"IF('Trip Generation'!E49=\"Linear Equation\",IF(C91=\"\",\"No\",\"Yes\"),IF('Trip Generation'!E49=\"Log Equation\",(IF(E91=\"\",\"No\",\"Yes\")),\"Yes\"))","v":"Yes"},{"$f":"IF('Trip Generation'!E49=\"Linear Equation\",IF(I91=\"\",\"No\",\"Yes\"),IF('Trip Generation'!E49=\"Log Equation\",(IF(K91=\"\",\"No\",\"Yes\")),\"Yes\"))","v":"Yes"},{"$f":"IF('Trip Generation'!E49=\"Linear Equation\",IF(O91=\"\",\"No\",\"Yes\"),IF('Trip Generation'!E49=\"Log Equation\",(IF(Q91=\"\",\"No\",\"Yes\")),\"Yes\"))","v":"Yes"}]
[850,102.24,66.95,1391.56,null,null,null,3.59,null,null,null,null,null,10.5,null,null,0.61,3.95,null,{"$f":"IFERROR('Physical Outputs'!E$30/('Physical Outputs'!B$30/1000),0)","v":0},{"$f":"IF('Trip Generation'!E50=\"Linear Equation\",IF(C92=\"\",\"No\",\"Yes\"),IF('Trip Generation'!E50=\"Log Equation\",(IF(E92=\"\",\"No\",\"Yes\")),\"Yes\"))","v":"Yes"},{"$f":"IF('Trip Generation'!E50=\"Linear Equation\",IF(I92=\"\",\"No\",\"Yes\"),IF('Trip Generation'!E50=\"Log Equation\",(IF(K92=\"\",\"No\",\"Yes\")),\"Yes\"))","v":"Yes"},{"$f":"IF('Trip Generation'!E50=\"Linear Equation\",IF(O92=\"\",\"No\",\"Yes\"),IF('Trip Generation'!E50=\"Log Equation\",(IF(Q92=\"\",\"No\",\"Yes\")),\"Yes\"))","v":"Yes"}]
[912,148.15,null,null,null,null,null,12.35,null,null,null,null,null,25.82,null,null,null,null,null,{"$f":"IFERROR('Physical Outputs'!E$30/('Physical Outputs'!B$30/1000),0)","v":0},{"$f":"IF('Trip Generation'!E51=\"Linear Equation\",IF(C93=\"\",\"No\",\"Yes\"),IF('Trip Generation'!E51=\"Log Equation\",(IF(E93=\"\",\"No\",\"Yes\")),\"Yes\"))","v":"Yes"},{"$f":"IF('Trip Generation'!E51=\"Linear Equation\",IF(I93=\"\",\"No\",\"Yes\"),IF('Trip Generation'!E51=\"Log Equation\",(IF(K93=\"\",\"No\",\"Yes\")),\"Yes\"))","v":"Yes"},{"$f":"IF('Trip Generation'!E51=\"Linear Equation\",IF(O93=\"\",\"No\",\"Yes\"),IF('Trip Generation'!E51=\"Log Equation\",(IF(Q93=\"\",\"No\",\"Yes\")),\"Yes\"))","v":"Yes"}]
[492,32.93,null,null,null,null,null,1.38,null,null,null,null,null,3.53,null,null,0.95,1.43,null,{"$f":"IFERROR('Physical Outputs'!E$30/('Physical Outputs'!B$30/1000),0)","v":0},{"$f":"IF('Trip Generation'!E52=\"Linear Equation\",IF(C94=\"\",\"No\",\"Yes\"),IF('Trip Generation'!E52=\"Log Equation\",(IF(E94=\"\",\"No\",\"Yes\")),\"Yes\"))","v":"Yes"},{"$f":"IF('Trip Generation'!E52=\"Linear Equation\",IF(I94=\"\",\"No\",\"Yes\"),IF('Trip Generation'!E52=\"Log Equation\",(IF(K94=\"\",\"No\",\"Yes\")),\"Yes\"))","v":"Yes"},{"$f":"IF('Trip Generation'!E52=\"Linear Equation\",IF(O94=\"\",\"No\",\"Yes\"),IF('Trip Generation'!E52=\"Log Equation\",(IF(Q94=\"\",\"No\",\"Yes\")),\"Yes\"))","v":"Yes"}]
[932,127.15,null,null,null,null,null,11.52,null,null,null,null,null,11.15,null,null,null,null,null,{"$f":"IFERROR('Physical Outputs'!E$30/('Physical Outputs'!B$30/1000),0)","v":0},{"$f":"IF('Trip Generation'!E53=\"Linear Equation\",IF(C95=\"\",\"No\",\"Yes\"),IF('Trip Generation'!E53=\"Log Equation\",(IF(E95=\"\",\"No\",\"Yes\")),\"Yes\"))","v":"Yes"},{"$f":"IF('Trip Generation'!E53=\"Linear Equation\",IF(I95=\"\",\"No\",\"Yes\"),IF('Trip Generation'!E53=\"Log Equation\",(IF(K95=\"\",\"No\",\"Yes\")),\"Yes\"))","v":"Yes"},{"$f":"IF('Trip Generation'!E53=\"Linear Equation\",IF(O95=\"\",\"No\",\"Yes\"),IF('Trip Generation'!E53=\"Log Equation\",(IF(Q95=\"\",\"No\",\"Yes\")),\"Yes\"))","v":"Yes"}]
[934,496.12,null,null,null,null,null,49.35,null,null,null,null,null,33.840000000000003,null,null,null,null,null,{"$f":"IFERROR('Physical Outputs'!E$30/('Physical Outputs'!B$30/1000),0)","v":0},{"$f":"IF('Trip Generation'!E54=\"Linear Equation\",IF(C96=\"\",\"No\",\"Yes\"),IF('Trip Generation'!E54=\"Log Equation\",(IF(E96=\"\",\"No\",\"Yes\")),\"Yes\"))","v":"Yes"},{"$f":"IF('Trip Generation'!E54=\"Linear Equation\",IF(I96=\"\",\"No\",\"Yes\"),IF('Trip Generation'!E54=\"Log Equation\",(IF(K96=\"\",\"No\",\"Yes\")),\"Yes\"))","v":"Yes"},{"$f":"IF('Trip Generation'!E54=\"Linear Equation\",IF(O96=\"\",\"No\",\"Yes\"),IF('Trip Generation'!E54=\"Log Equation\",(IF(Q96=\"\",\"No\",\"Yes\")),\"Yes\"))","v":"Yes"}]
[945,{"$f":"162.78/13.38*97.08","v":1181.0674439461882},null,null,null,null,null,79.3,null,null,null,null,null,97.08,null,null,null,null,null,{"$f":"IFERROR('Physical Outputs'!E$30/('Physical Outputs'!B$30/1000),0)","v":0},{"$f":"IF('Trip Generation'!E55=\"Linear Equation\",IF(C97=\"\",\"No\",\"Yes\"),IF('Trip Generation'!E55=\"Log Equation\",(IF(E97=\"\",\"No\",\"Yes\")),\"Yes\"))","v":"Yes"},{"$f":"IF('Trip Generation'!E55=\"Linear Equation\",IF(I97=\"\",\"No\",\"Yes\"),IF('Trip Generation'!E55=\"Log Equation\",(IF(K97=\"\",\"No\",\"Yes\")),\"Yes\"))","v":"Yes"},{"$f":"IF('Trip Generation'!E55=\"Linear Equation\",IF(O97=\"\",\"No\",\"Yes\"),IF('Trip Generation'!E55=\"Log Equation\",(IF(Q97=\"\",\"No\",\"Yes\")),\"Yes\"))","v":"Yes"}]
[942,{"$f":"AVERAGE(H98,N98)*10","v":31.6},null,null,null,null,null,2.94,null,null,null,null,null,3.38,null,null,0.94,1.33,null,{"$f":"IFERROR('Physical Outputs'!E$30/('Physical Outputs'!B$30/1000),0)","v":0},{"$f":"IF('Trip Generation'!E56=\"Linear Equation\",IF(C98=\"\",\"No\",\"Yes\"),IF('Trip Generation'!E56=\"Log Equation\",(IF(E98=\"\",\"No\",\"Yes\")),\"Yes\"))","v":"Yes"},{"$f":"IF('Trip Generation'!E56=\"Linear Equation\",IF(I98=\"\",\"No\",\"Yes\"),IF('Trip Generation'!E56=\"Log Equation\",(IF(K98=\"\",\"No\",\"Yes\")),\"Yes\"))","v":"Yes"},{"$f":"IF('Trip Generation'!E56=\"Linear Equation\",IF(O98=\"\",\"No\",\"Yes\"),IF('Trip Generation'!E56=\"Log Equation\",(IF(Q98=\"\",\"No\",\"Yes\")),\"Yes\"))","v":"Yes"}]
[]
[]
[710,3.32,null,null,0.84,2.23,null,0.48,null,null,0.86,0.24,null,0.46,0.37,60.08,null,null,null,{"$f":"IFERROR('Physical Outputs'!E$31/('Physical Outputs'!B$31/1000),0)","v":0},{"$f":"IF('Trip Generation'!E60=\"Linear Equation\",IF(C101=\"\",\"No\",\"Yes\"),IF('Trip Generation'!E60=\"Log Equation\",(IF(E101=\"\",\"No\",\"Yes\")),\"Yes\"))","v":"Yes"},{"$f":"IF('Trip Generation'!E60=\"Linear Equation\",IF(I101=\"\",\"No\",\"Yes\"),IF('Trip Generation'!E60=\"Log Equation\",(IF(K101=\"\",\"No\",\"Yes\")),\"Yes\"))","v":"Yes"},{"$f":"IF('Trip Generation'!E60=\"Linear Equation\",IF(O101=\"\",\"No\",\"Yes\"),IF('Trip Generation'!E60=\"Log Equation\",(IF(Q101=\"\",\"No\",\"Yes\")),\"Yes\"))","v":"Yes"}]
[720,8.91,null,null,0.67,3.76,null,0.53,null,null,null,null,null,1.06,null,null,1.06,-0.32,null,{"$f":"IFERROR('Physical Outputs'!E$31/('Physical Outputs'!B$31/1000),0)","v":0},{"$f":"IF('Trip Generation'!E61=\"Linear Equation\",IF(C102=\"\",\"No\",\"Yes\"),IF('Trip Generation'!E61=\"Log Equation\",(IF(E102=\"\",\"No\",\"Yes\")),\"Yes\"))","v":"Yes"},{"$f":"IF('Trip Generation'!E61=\"Linear Equation\",IF(I102=\"\",\"No\",\"Yes\"),IF('Trip Generation'!E61=\"Log Equation\",(IF(K102=\"\",\"No\",\"Yes\")),\"Yes\"))","v":"Yes"},{"$f":"IF('Trip Generation'!E61=\"Linear Equation\",IF(O102=\"\",\"No\",\"Yes\"),IF('Trip Generation'!E61=\"Log Equation\",(IF(Q102=\"\",\"No\",\"Yes\")),\"Yes\"))","v":"Yes"}]
[]
[]
[110,3.02,2.95,30.57,null,null,null,0.44,0.27,70.47,null,null,null,0.42,0.28999999999999998,58.03,null,null,null,{"$f":"IFERROR('Physical Outputs'!E$32/('Physical Outputs'!B$32/1000),0)","v":0},{"$f":"IF('Trip Generation'!E65=\"Linear Equation\",IF(C105=\"\",\"No\",\"Yes\"),IF('Trip Generation'!E65=\"Log Equation\",(IF(E105=\"\",\"No\",\"Yes\")),\"Yes\"))","v":"Yes"},{"$f":"IF('Trip Generation'!E65=\"Linear Equation\",IF(I105=\"\",\"No\",\"Yes\"),IF('Trip Generation'!E65=\"Log Equation\",(IF(K105=\"\",\"No\",\"Yes\")),\"Yes\"))","v":"Yes"},{"$f":"IF('Trip Generation'!E65=\"Linear Equation\",IF(O105=\"\",\"No\",\"Yes\"),IF('Trip Generation'!E65=\"Log Equation\",(IF(Q105=\"\",\"No\",\"Yes\")),\"Yes\"))","v":"Yes"}]
[140,2.13,1.75,245.96,null,null,null,0.4,"","",0.85,7.0000000000000007E-2,null,0.36,"","",0.78,0.48,null,{"$f":"IFERROR('Physical Outputs'!E$32/('Physical Outputs'!B$32/1000),0)","v":0},{"$f":"IF('Trip Generation'!E66=\"Linear Equation\",IF(C106=\"\",\"No\",\"Yes\"),IF('Trip Generation'!E66=\"Log Equation\",(IF(E106=\"\",\"No\",\"Yes\")),\"Yes\"))","v":"Yes"},{"$f":"IF('Trip Generation'!E66=\"Linear Equation\",IF(I106=\"\",\"No\",\"Yes\"),IF('Trip Generation'!E66=\"Log Equation\",(IF(K106=\"\",\"No\",\"Yes\")),\"Yes\"))","v":"Yes"},{"$f":"IF('Trip Generation'!E66=\"Linear Equation\",IF(O106=\"\",\"No\",\"Yes\"),IF('Trip Generation'!E66=\"Log Equation\",(IF(Q106=\"\",\"No\",\"Yes\")),\"Yes\"))","v":"Yes"}]
[151,2.5,0.43,50.56,1.01,0.82,null,0.15,null,null,null,null,null,0.26,null,null,1.02,1.49,null,{"$f":"IFERROR('Physical Outputs'!E$32/('Physical Outputs'!B$32/1000),0)","v":0},{"$f":"IF('Trip Generation'!E67=\"Linear Equation\",IF(C107=\"\",\"No\",\"Yes\"),IF('Trip Generation'!E67=\"Log Equation\",(IF(E107=\"\",\"No\",\"Yes\")),\"Yes\"))","v":"Yes"},{"$f":"IF('Trip Generation'!E67=\"Linear Equation\",IF(I107=\"\",\"No\",\"Yes\"),IF('Trip Generation'!E67=\"Log Equation\",(IF(K107=\"\",\"No\",\"Yes\")),\"Yes\"))","v":"Yes"},{"$f":"IF('Trip Generation'!E67=\"Linear Equation\",IF(O107=\"\",\"No\",\"Yes\"),IF('Trip Generation'!E67=\"Log Equation\",(IF(Q107=\"\",\"No\",\"Yes\")),\"Yes\"))","v":"Yes"}]
[]
[]
[310,8.17,8.9499999999999993,-373.16,null,null,null,0.56000000000000005,null,null,1.24,-2,null,0.59,null,null,null,null,null,{"$f":"IFERROR('Physical Outputs'!E$35/('Physical Outputs'!B$35/1000),0)","v":0},{"$f":"IF('Trip Generation'!E71=\"Linear Equation\",IF(C110=\"\",\"No\",\"Yes\"),IF('Trip Generation'!E71=\"Log Equation\",(IF(E110=\"\",\"No\",\"Yes\")),\"Yes\"))","v":"Yes"},{"$f":"IF('Trip Generation'!E71=\"Linear Equation\",IF(I110=\"\",\"No\",\"Yes\"),IF('Trip Generation'!E71=\"Log Equation\",(IF(K110=\"\",\"No\",\"Yes\")),\"Yes\"))","v":"Yes"},{"$f":"IF('Trip Generation'!E71=\"Linear Equation\",IF(O110=\"\",\"No\",\"Yes\"),IF('Trip Generation'!E71=\"Log Equation\",(IF(Q110=\"\",\"No\",\"Yes\")),\"Yes\"))","v":"Yes"}]
[320,5.63,null,null,0.92,2.11,null,0.45,null,null,0.92,-0.46,null,0.47,null,null,0.94,-0.51,null,{"$f":"IFERROR('Physical Outputs'!E$35/('Physical Outputs'!B$35/1000),0)","v":0},{"$f":"IF('Trip Generation'!E72=\"Linear Equation\",IF(C111=\"\",\"No\",\"Yes\"),IF('Trip Generation'!E72=\"Log Equation\",(IF(E111=\"\",\"No\",\"Yes\")),\"Yes\"))","v":"Yes"},{"$f":"IF('Trip Generation'!E72=\"Linear Equation\",IF(I111=\"\",\"No\",\"Yes\"),IF('Trip Generation'!E72=\"Log Equation\",(IF(K111=\"\",\"No\",\"Yes\")),\"Yes\"))","v":"Yes"},{"$f":"IF('Trip Generation'!E72=\"Linear Equation\",IF(O111=\"\",\"No\",\"Yes\"),IF('Trip Generation'!E72=\"Log Equation\",(IF(Q111=\"\",\"No\",\"Yes\")),\"Yes\"))","v":"Yes"}]
[]
[]
[550,2.38,2.23,440,null,null,null,0.21,0.21,-69.14,null,null,null,0.21,0.19,118.58,null,null,null,{"$f":"0.25","v":0.25},{"$f":"IF('Trip Generation'!E76=\"Linear Equation\",IF(C114=\"\",\"No\",\"Yes\"),IF('Trip Generation'!E76=\"Log Equation\",(IF(E114=\"\",\"No\",\"Yes\")),\"Yes\"))","v":"Yes"},{"$f":"IF('Trip Generation'!E76=\"Linear Equation\",IF(I114=\"\",\"No\",\"Yes\"),IF('Trip Generation'!E76=\"Log Equation\",(IF(K114=\"\",\"No\",\"Yes\")),\"Yes\"))","v":"Yes"},{"$f":"IF('Trip Generation'!E76=\"Linear Equation\",IF(O114=\"\",\"No\",\"Yes\"),IF('Trip Generation'!E76=\"Log Equation\",(IF(Q114=\"\",\"No\",\"Yes\")),\"Yes\"))","v":"Yes"}]
[530,1.71,null,null,0.81,1.86,null,0.42,null,null,null,null,null,0.13,null,null,null,null,null,{"$f":"0.1","v":0.1},{"$f":"IF('Trip Generation'!E77=\"Linear Equation\",IF(C115=\"\",\"No\",\"Yes\"),IF('Trip Generation'!E77=\"Log Equation\",(IF(E115=\"\",\"No\",\"Yes\")),\"Yes\"))","v":"Yes"},{"$f":"IF('Trip Generation'!E77=\"Linear Equation\",IF(I115=\"\",\"No\",\"Yes\"),IF('Trip Generation'!E77=\"Log Equation\",(IF(K115=\"\",\"No\",\"Yes\")),\"Yes\"))","v":"Yes"},{"$f":"IF('Trip Generation'!E77=\"Linear Equation\",IF(O115=\"\",\"No\",\"Yes\"),IF('Trip Generation'!E77=\"Log Equation\",(IF(Q115=\"\",\"No\",\"Yes\")),\"Yes\"))","v":"Yes"}]
[522,1.62,null,null,null,null,null,0.54,null,null,null,null,null,0.16,null,null,null,null,null,{"$f":"0.1","v":0.1},{"$f":"IF('Trip Generation'!E78=\"Linear Equation\",IF(C116=\"\",\"No\",\"Yes\"),IF('Trip Generation'!E78=\"Log Equation\",(IF(E116=\"\",\"No\",\"Yes\")),\"Yes\"))","v":"Yes"},{"$f":"IF('Trip Generation'!E78=\"Linear Equation\",IF(I116=\"\",\"No\",\"Yes\"),IF('Trip Generation'!E78=\"Log Equation\",(IF(K116=\"\",\"No\",\"Yes\")),\"Yes\"))","v":"Yes"},{"$f":"IF('Trip Generation'!E78=\"Linear Equation\",IF(O116=\"\",\"No\",\"Yes\"),IF('Trip Generation'!E78=\"Log Equation\",(IF(Q116=\"\",\"No\",\"Yes\")),\"Yes\"))","v":"Yes"}]
[520,1.29,null,null,null,null,null,0.45,null,null,1.1399999999999999,-1.86,null,0.15,null,null,null,null,null,{"$f":"0.1","v":0.1},{"$f":"IF('Trip Generation'!E79=\"Linear Equation\",IF(C117=\"\",\"No\",\"Yes\"),IF('Trip Generation'!E79=\"Log Equation\",(IF(E117=\"\",\"No\",\"Yes\")),\"Yes\"))","v":"Yes"},{"$f":"IF('Trip Generation'!E79=\"Linear Equation\",IF(I117=\"\",\"No\",\"Yes\"),IF('Trip Generation'!E79=\"Log Equation\",(IF(K117=\"\",\"No\",\"Yes\")),\"Yes\"))","v":"Yes"},{"$f":"IF('Trip Generation'!E79=\"Linear Equation\",IF(O117=\"\",\"No\",\"Yes\"),IF('Trip Generation'!E79=\"Log Equation\",(IF(Q117=\"\",\"No\",\"Yes\")),\"Yes\"))","v":"Yes"}]

{"sheet":"Calculations","index":12,"n_rows":116,"n_cols":23,"rows_kept":116,"cut":false,"hidden":true,"merged":[[50,3,50,8],[72,0,72,4],[78,5,78,7]]}
["MIXED USE TRIP GENERATION MODEL V4 - CALCULATIONS"]
[]
["Trip purpose distribution for each land use type"]
[]
["NCHRP Trips"]
["Note: The productions and attractions in the first table are not actual project Ps and As - they are based on NCHRP rates (not ITE) and are solely for the purposes of"]
["estimating the trip purpose splits for the project.  The exception to this is the school Ps and As, which are based on actual ITE trips above because there is no NCHRP estimate available."]
["They are divided into HBW and HBO Attractions based on a fixed percentage input by the user on the Global input tab."]
[]
["Residential Production Rate",{"$f":"'Fixed Parameters'!$B$50","v":8.85}]
[]
[null,null,"Productions",null,null,"Attractions",null,null,"Total"]
[null,"DU or Jobs","HBW","HBO","NHB","HBW","HBO","NHB","HBW","HBO","NHB"]
["Dwelling Units",{"$f":"SUM('Trip Generation'!B44:B46)","v":1.9999999999999993},{"$f":"$B14*$B$10*'Fixed Parameters'!C$50","v":3.7169999999999983},{"$f":"$B14*$B$10*'Fixed Parameters'!D$50","v":9.9562499999999954},{"$f":"$B14*$B$10*'Fixed Parameters'!E$50","v":4.0267499999999981},{"$f":"$B14*'Fixed Parameters'!C53","v":0},{"$f":"$B14*'Fixed Parameters'!D53","v":1.7999999999999994},{"$f":"$B14*'Fixed Parameters'!E53","v":0.99999999999999967},{"$f":"C14+F14","v":3.7169999999999983},11.756249999999994,5.0267499999999981]
["Retail Emp CBD",{"$f":"IF('Trip Generation'!$B$28=\"Yes\",SUM('Trip Generation'!D49:D56),0)","v":0},0,0,{"$f":"$B15*'Fixed Parameters'!E54/2","v":0},{"$f":"$B15*'Fixed Parameters'!C54","v":0},{"$f":"$B15*'Fixed Parameters'!D54","v":0},{"$f":"$B15*'Fixed Parameters'!E54/2","v":0},0,0,0]
["Retail Emp Non-CBD",{"$f":"IF('Trip Generation'!$B$28=\"No\",SUM('Trip Generation'!D49:D56),0)","v":0},0,0,{"$f":"$B16*'Fixed Parameters'!E55/2","v":0},{"$f":"$B16*'Fixed Parameters'!C55","v":0},{"$f":"$B16*'Fixed Parameters'!D55","v":0},{"$f":"$B16*'Fixed Parameters'!E55/2","v":0},0,0,0]
["Service Emp (Office)",{"$f":"SUM('Trip Generation'!D60:D61)","v":0},0,0,{"$f":"$B17*'Fixed Parameters'!E56/2","v":0},{"$f":"$B17*'Fixed Parameters'!C56","v":0},{"$f":"$B17*'Fixed Parameters'!D56","v":0},{"$f":"$B17*'Fixed Parameters'!E56/2","v":0},0,0,0]
["Other Emp (Incl. Industrial, not incl. school)",{"$f":"SUM('Trip Generation'!D65:D67,'Trip Generation'!D71:D72)+'Trip Generation'!B84","v":0},0,0,{"$f":"$B18*'Fixed Parameters'!E57/2","v":0},{"$f":"$B18*'Fixed Parameters'!C57","v":0},{"$f":"$B18*'Fixed Parameters'!D57","v":0},{"$f":"$B18*'Fixed Parameters'!E57/2","v":0},0,0,0]
["School",{"$f":"SUM('Trip Generation'!D76:D79)","v":0},0,0,{"$f":"SUM('Trip Generation'!$F79:$H79)*'Fixed Parameters'!D73","v":0},{"$f":"SUM('Trip Generation'!$F79:$H79)*'Fixed Parameters'!B78","v":0},{"$f":"SUM('Trip Generation'!$F79:$H79)*'Fixed Parameters'!C78","v":0},{"$f":"SUM('Trip Generation'!$F79:$H79)*'Fixed Parameters'!D78","v":0},0,0,0]
["Total",null,{"$f":"SUM(C14:C19)","v":3.7169999999999983},9.9562499999999954,4.0267499999999981,0,1.7999999999999994,0.99999999999999967,3.7169999999999983,11.756249999999994,5.0267499999999981]
[]
[]
["Trip Purpose Distribution for Residential Only",null,null,"P/A Distribution of NCHRP Trips",null,null,null,null,null,null,"P/A Distribution of ITE Trips",null,null,null,null,null,null,"Total Trips"]
[null,null,null,"Productions",null,null,"Attractions",null,null,null,"Productions",null,null,"Attractions"]
[null,"Raw ITE Trips",null,"HBW","HBO","NHB","HBW","HBO","NHB",null,"HBW","HBO","NHB","HBW","HBO","NHB",null,"HBW","HBO","NHB",null,"Totally External NHB Vehicle Productions for Project Household VMT Calcs"]
["Daily",{"$f":"SUM('Trip Generation'!F44:F46)","v":13.299999999999997},null,{"$f":"C14","v":3.7169999999999983},{"$f":"D14","v":9.9562499999999954},{"$f":"E14*('Trip Generation'!$B$39+'Trip Generation'!$B$40)","v":1.6106999999999994},{"$f":"F14","v":0},{"$f":"G14","v":1.7999999999999994},{"$f":"H14","v":0.99999999999999967},null,{"$f":"IF(SUM($D26:$I26)=0,0,$B26*D26/SUM($D26:$I26))","v":2.7337003254266894},7.322411585964347,1.1846034743515654,0,1.3238258234511815,0.73545879080621201,null,{"$f":"K26+N26","v":2.7337003254266894},8.6462374094155283,1.9200622651577774,null,{"$f":"IF(SUM(D26:I26)=0,0,E14*'Trip Generation'!B41*B26/SUM(D26:I26))","v":1.7769052115273483},"<== used NCHRP rate and counted all trips, but scaled by the same factor of total ITE trips / total NCHRP trips that is being used to the left"]
["AM Peak Hour",{"$f":"SUM('Trip Generation'!G$44:G$46)","v":1.0199999999999996},null,{"$f":"D$26*'Fixed Parameters'!C$66","v":0.53246024999999975},{"$f":"E$26*'Fixed Parameters'!D$66","v":0.5182228124999998},{"$f":"F$26*'Fixed Parameters'!E$66","v":2.5287989999999989E-2},{"$f":"G$26*'Fixed Parameters'!C$66","v":0},{"$f":"H$26*'Fixed Parameters'!D$66","v":9.3689999999999968E-2},{"$f":"I$26*'Fixed Parameters'!E$66","v":1.5699999999999992E-2},null,0.45818061412980299,0.44592933742438756,2.1760247433133866E-2,0,8.0619993206668933E-2,1.3509807806006002E-2,null,0.45818061412980299,0.52654933063105647,3.5270055239139869E-2,null,{"$f":"V$26*'Fixed Parameters'!E$66","v":2.7897411820979365E-2}]
["PM Peak Hour",{"$f":"SUM('Trip Generation'!H$44:H$46)","v":1.2399999999999995},null,{"$f":"D$26*'Fixed Parameters'!F$66","v":0.42847717499999982},{"$f":"E$26*'Fixed Parameters'!G$66","v":0.72506390624999972},{"$f":"F$26*'Fixed Parameters'!H$66","v":0.14874814499999994},{"$f":"G$26*'Fixed Parameters'!F$66","v":0},{"$f":"H$26*'Fixed Parameters'!G$66","v":0.13108499999999995},{"$f":"I$26*'Fixed Parameters'!H$66","v":9.2349999999999974E-2},null,0.34823573478012071,0.58928030916819152,0.12089189948392219,0,0.10653655306995552,7.5055503497809761E-2,null,0.34823573478012071,0.69581686223814709,0.19594740298173197,null,{"$f":"V$26*'Fixed Parameters'!H$66","v":0.16409719628455061}]
[]
[null,null,null,"P/A Distribution of NCHRP Trips",null,null,null,null,null,null,"Percentages",null,null,null,null,null,null,"Total Trips"]
[null,null,null,"Productions",null,null,"Attractions",null,null,null,"Productions",null,null,"Attractions"]
["Trip Purpose Distribution for Retail Only","Raw ITE Trips",null,"HBW","HBO","NHB","HBW","HBO","NHB",null,"HBW","HBO","NHB","HBW","HBO","NHB",null,"HBW","HBO","NHB"]
["Daily",{"$f":"SUM('Trip Generation'!F49:F56)","v":0},null,{"$f":"C15+C16","v":0},0,0,{"$f":"F15+F16","v":0},0,0,null,{"$f":"IF(SUM($D33:$I33)=0,0,$B33*D33/SUM($D33:$I33))","v":0},0,0,0,0,0,null,{"$f":"K33+N33","v":0},0,0]
["AM Peak Hour",{"$f":"SUM('Trip Generation'!G$49:G$56)","v":0},null,{"$f":"D$33*'Fixed Parameters'!C$66","v":0},{"$f":"E$33*'Fixed Parameters'!D$66","v":0},{"$f":"F$33*'Fixed Parameters'!E$66","v":0},{"$f":"G$33*'Fixed Parameters'!C$66","v":0},{"$f":"H$33*'Fixed Parameters'!D$66","v":0},{"$f":"I$33*'Fixed Parameters'!E$66","v":0},null,0,0,0,0,0,0,null,0,0,0]
["PM Peak Hour",{"$f":"SUM('Trip Generation'!H$49:H$56)","v":0},null,{"$f":"D$33*'Fixed Parameters'!F$66","v":0},{"$f":"E$33*'Fixed Parameters'!G$66","v":0},{"$f":"F$33*'Fixed Parameters'!H$66","v":0},{"$f":"G$33*'Fixed Parameters'!F$66","v":0},{"$f":"H$33*'Fixed Parameters'!G$66","v":0},{"$f":"I$33*'Fixed Parameters'!H$66","v":0},null,0,0,0,0,0,0,null,0,0,0]
[]
[null,null,null,"P/A Distribution of NCHRP Trips",null,null,null,null,null,null,"Percentages",null,null,null,null,null,null,"Total Trips"]
[null,null,null,"Productions",null,null,"Attractions",null,null,null,"Productions",null,null,"Attractions"]
["Trip Purpose Distribution for Office Only","Raw ITE Trips",null,"HBW","HBO","NHB","HBW","HBO","NHB",null,"HBW","HBO","NHB","HBW","HBO","NHB",null,"HBW","HBO","NHB"]
["Daily",{"$f":"SUM('Trip Generation'!F$60:F$61)","v":0},null,{"$f":"C17","v":0},0,0,0,0,0,null,{"$f":"IF(SUM($D40:$I40)=0,0,$B40*D40/SUM($D40:$I40))","v":0},0,0,0,0,0,null,{"$f":"K40+N40","v":0},0,0]
["AM Peak Hour",{"$f":"SUM('Trip Generation'!G$60:G$61)","v":0},null,{"$f":"D$40*'Fixed Parameters'!C$66","v":0},{"$f":"E$40*'Fixed Parameters'!D$66","v":0},{"$f":"F$40*'Fixed Parameters'!E$66","v":0},{"$f":"G$40*'Fixed Parameters'!C$66","v":0},{"$f":"H$40*'Fixed Parameters'!D$66","v":0},{"$f":"I$40*'Fixed Parameters'!E$66","v":0},null,0,0,0,0,0,0,null,0,0,0]
["PM Peak Hour",{"$f":"SUM('Trip Generation'!H$60:H$61)","v":0},null,{"$f":"D$40*'Fixed Parameters'!F$66","v":0},{"$f":"E$40*'Fixed Parameters'!G$66","v":0},{"$f":"F$40*'Fixed Parameters'!H$66","v":0},{"$f":"G$40*'Fixed Parameters'!F$66","v":0},{"$f":"H$40*'Fixed Parameters'!G$66","v":0},{"$f":"I$40*'Fixed Parameters'!H$66","v":0},null,0,0,0,0,0,0,null,0,0,0]
[]
[null,null,null,"P/A Distribution of NCHRP Trips",null,null,null,null,null,null,"Percentages",null,null,null,null,null,null,"Total Trips"]
[null,null,null,"Productions",null,null,"Attractions",null,null,null,"Productions",null,null,"Attractions"]
["Trip Purpose Distribution for Industrial / Other Only","Raw ITE Trips",null,"HBW","HBO","NHB","HBW","HBO","NHB",null,"HBW","HBO","NHB","HBW","HBO","NHB",null,"HBW","HBO","NHB"]
["Daily",{"$f":"SUM('Trip Generation'!F$65:F$72)+'Trip Generation'!B83","v":0},null,{"$f":"C18","v":0},0,0,0,0,0,null,{"$f":"IF(SUM($D47:$I47)=0,0,$B47*D47/SUM($D47:$I47))","v":0},0,0,0,0,0,null,{"$f":"K47+N47","v":0},0,0]
["AM Peak Hour",{"$f":"SUM('Trip Generation'!G$65:G$72)+'Trip Generation'!C$83","v":0},null,{"$f":"D$47*'Fixed Parameters'!C$66","v":0},{"$f":"E$47*'Fixed Parameters'!D$66","v":0},{"$f":"F$47*'Fixed Parameters'!E$66","v":0},{"$f":"G$47*'Fixed Parameters'!C$66","v":0},{"$f":"H$47*'Fixed Parameters'!D$66","v":0},{"$f":"I$47*'Fixed Parameters'!E$66","v":0},null,0,0,0,0,0,0,null,0,0,0]
["PM Peak Hour",{"$f":"SUM('Trip Generation'!H$65:H$72)+'Trip Generation'!D$83","v":0},null,{"$f":"D$47*'Fixed Parameters'!F$66","v":0},{"$f":"E$47*'Fixed Parameters'!G$66","v":0},{"$f":"F$47*'Fixed Parameters'!H$66","v":0},{"$f":"G$47*'Fixed Parameters'!F$66","v":0},{"$f":"H$47*'Fixed Parameters'!G$66","v":0},{"$f":"I$47*'Fixed Parameters'!H$66","v":0},null,0,0,0,0,0,0,null,0,0,0]
[]
[null,null,null,"No NCHRP distribution",null,null,null,null,null,null,"Percentages (formula is simpler - just using input splits)",null,null,null,null,null,null,"Total Trips"]
[null,null,null,"Productions",null,null,"Attractions",null,null,null,"Productions",null,null,"Attractions"]
["Trip Purpose Distribution for School Only","Raw ITE Trips",null,"HBW","HBO","NHB","HBW","HBO","NHB",null,"HBW","HBO","NHB","HBW","HBO","NHB",null,"HBW","HBO","NHB"]
["Daily",{"$f":"SUM('Trip Generation'!F$76:F$79)","v":0},null,null,null,null,null,null,null,null,{"$f":"$B54*'Fixed Parameters'!B73","v":0},{"$f":"$B54*'Fixed Parameters'!C73","v":0},{"$f":"$B54*'Fixed Parameters'!D73","v":0},{"$f":"$B54*'Fixed Parameters'!B78","v":0},{"$f":"$B54*'Fixed Parameters'!C78","v":0},{"$f":"$B54*'Fixed Parameters'!D78","v":0},null,{"$f":"K54+N54","v":0},0,0]
["AM Peak Hour",{"$f":"SUM('Trip Generation'!G$76:G$79)","v":0},null,null,null,null,null,null,null,null,{"$f":"$B55*'Fixed Parameters'!B74","v":0},{"$f":"$B55*'Fixed Parameters'!C74","v":0},{"$f":"$B55*'Fixed Parameters'!D74","v":0},{"$f":"$B55*'Fixed Parameters'!B79","v":0},{"$f":"$B55*'Fixed Parameters'!C79","v":0},{"$f":"$B55*'Fixed Parameters'!D79","v":0},null,0,0,0]
["PM Peak Hour",{"$f":"SUM('Trip Generation'!H$76:H$79)","v":0},null,null,null,null,null,null,null,null,{"$f":"$B56*'Fixed Parameters'!B75","v":0},{"$f":"$B56*'Fixed Parameters'!C75","v":0},{"$f":"$B56*'Fixed Parameters'!D75","v":0},{"$f":"$B56*'Fixed Parameters'!B80","v":0},{"$f":"$B56*'Fixed Parameters'!C80","v":0},{"$f":"$B56*'Fixed Parameters'!D80","v":0},null,0,0,0]
[]
[null,null,null,"P/A Distribution of NCHRP Trips",null,null,null,null,null,null,"Percentages",null,null,null,null,null,null,"Total Trips (For Trip Generation)"]
[null,null,null,"Productions",null,null,"Attractions",null,null,null,"Productions",null,null,"Attractions"]
["Total Trip Purpose Distribution for Project Site","Raw ITE Trips",null,"HBW","HBO","NHB","HBW","HBO","NHB",null,"HBW","HBO","NHB","HBW","HBO","NHB",null,"HBW","HBO","NHB"]
["Daily",{"$f":"B26+B33+B40+B47+B54","v":13.299999999999997},null,{"$f":"D26+D33+D40+D47+D54","v":3.7169999999999983},9.9562499999999954,1.6106999999999994,0,1.7999999999999994,0.99999999999999967,null,{"$f":"K26+K33+K40+K47+K54","v":2.7337003254266894},7.322411585964347,1.1846034743515654,0,1.3238258234511815,0.73545879080621201,null,{"$f":"R26+R33+R40+R47+R54","v":2.7337003254266894},8.6462374094155283,1.9200622651577774]
["AM Peak Hour",{"$f":"B27+B34+B41+B48+B55","v":1.0199999999999996},null,0.53246024999999975,0.5182228124999998,2.5287989999999989E-2,0,9.3689999999999968E-2,1.5699999999999992E-2,null,0.45818061412980299,0.44592933742438756,2.1760247433133866E-2,0,8.0619993206668933E-2,1.3509807806006002E-2,null,0.45818061412980299,0.52654933063105647,3.5270055239139869E-2]
["PM Peak Hour",{"$f":"B28+B35+B42+B49+B56","v":1.2399999999999995},null,0.42847717499999982,0.72506390624999972,0.14874814499999994,0,0.13108499999999995,9.2349999999999974E-2,null,0.34823573478012071,0.58928030916819152,0.12089189948392219,0,0.10653655306995552,7.5055503497809761E-2,null,0.34823573478012071,0.69581686223814709,0.19594740298173197]
[]
["Summary of Trips subject to model trip reductions"]
[]
["Total Trips subject to model trip reductions"]
[null,"Raw ITE Trips",null,"HBW","HBO","NHB"]
["Daily",{"$f":"SUM(D69:F69)","v":13.299999999999995},null,{"$f":"R61","v":2.7337003254266894},{"$f":"S61","v":8.6462374094155283},1.9200622651577774]
["AM Peak Hour",{"$f":"SUM(D70:F70)","v":1.0199999999999994},null,{"$f":"R62","v":0.45818061412980299},0.52654933063105647,3.5270055239139869E-2]
["PM Peak Hour",{"$f":"SUM(D71:F71)","v":1.2399999999999998},null,{"$f":"R63","v":0.34823573478012071},0.69581686223814709,0.19594740298173197]
[]
["Model Variables and Log Odds Calculations"]
[]
["MXD Total Population",{"$f":"SUMPRODUCT('Trip Generation'!B34:B36,'Trip Generation'!B44:B46)","v":4.9999999999999982}]
["MXD Total Employment",{"$f":"SUM(B15:B19)","v":0}]
[]
["Internal Capture Probability Model"]
[]
["Variable","Value","Log","Mean of log","Normalized Value"]
["Employment within the MXD",{"$f":"B76","v":0},{"$f":"IF(B81=0,0,LN(B81))","v":0},{"$f":"'Fixed Parameters'!F10","v":6.7},{"$f":"C81-D81","v":-6.7}]
["MXD Area in Square Miles",{"$f":"PI_SiteArea/640","v":7.03125},1.9503644994046936,{"$f":"'Fixed Parameters'!F11","v":-1.59},3.5403644994046939]
["Jobs / Population Diversity - index of jobs/population ratio compared to 0.2",{"$f":"IFERROR(MAX(1-ABS(0.2*B75-B76)/(0.2*B75+B76),0.01),)","v":0.01},-4.6051701859880909,{"$f":"'Fixed Parameters'!F12","v":-1.44},-3.165170185988091]
["Number of intersections per square mile within the MXD",{"$f":"'Trip Generation'!B26/PI_SiteArea*640","v":0.85333333333333328},-0.15860503017663866,{"$f":"'Fixed Parameters'!F13","v":5.31},-5.4686050301766382]
["Average Household Size Within the MXD",{"$f":"IF(SUM('Trip Generation'!B44:B46)=0,EXP(D85),SUMPRODUCT('Trip Generation'!$B$34:$B$36,'Trip Generation'!B44:B46)/SUM('Trip Generation'!B44:B46))","v":2.5},0.91629073187415511,{"$f":"'Fixed Parameters'!F14","v":0.85},6.6290731874155129E-2]
["Vehicles Owned per Capita within the MXD",{"$f":"IF(SUM('Trip Generation'!B44:B46)=0,EXP(D86),'Trip Generation'!B31/B85)","v":0.74},-0.30110509278392161,{"$f":"'Fixed Parameters'!F15","v":-0.28000000000000003},-2.1105092783921586E-2]
[]
[null,"HBW","HBO","NHB"]
["LOG ODDS",{"$f":"'Fixed Parameters'!B$9+SUMPRODUCT('Fixed Parameters'!B$10:B$15,$E$81:$E$86)","v":-4.9185238338859119},{"$f":"'Fixed Parameters'!C$9+SUMPRODUCT('Fixed Parameters'!C$10:C$15,$E$81:$E$86)","v":-4.3727207539089514},{"$f":"'Fixed Parameters'!D$9+SUMPRODUCT('Fixed Parameters'!D$10:D$15,$E$81:$E$86)","v":-5.1079501968616938}]
[""]
["Walking Trip Probability Model"]
[]
["Variable","Value","Log","Mean of log","Normalized Value"]
["MXD Area in Square Miles",{"$f":"PI_SiteArea/640","v":7.03125},{"$f":"IF(B94=0,0,LN(B94))","v":1.9503644994046936},{"$f":"'Fixed Parameters'!F22","v":-1.59},{"$f":"C94-D94","v":3.5403644994046939}]
["Population + Employment per square mile within the MXD",{"$f":"(B75+B76)/B82","v":0.71111111111111081},-0.34092658697059364,{"$f":"'Fixed Parameters'!F23","v":9.2799999999999994},-9.6209265869705938]
["Jobs / Population Diversity - index of jobs/population ratio compared to 0.2",{"$f":"IFERROR(MAX(1-ABS(0.2*B75-B76)/(0.2*B75+B76),0.01),)","v":0.01},-4.6051701859880909,{"$f":"'Fixed Parameters'!F24","v":-1.44},-3.165170185988091]
["Retail jobs / Population Diversity - index of retail jobs/population ratio compared to 0.05",{"$f":"IF(B75+B15+B16=0,EXP(D97),MAX(1-ABS(0.05*B75-(B15+B16))/(0.05*B75+(B15+B16)),0.01))","v":0.01},-4.6051701859880909,{"$f":"'Fixed Parameters'!F25","v":-1.43},-3.1751701859880912]
["Number of intersections per square mile within the MXD",{"$f":"'Trip Generation'!B26/PI_SiteArea*640","v":0.85333333333333328},-0.15860503017663866,{"$f":"'Fixed Parameters'!F26","v":5.31},-5.4686050301766382]
["Employment in thousands within 1 mile of the MXD outside the MXD itself",{"$f":"'Trip Generation'!B29/1000","v":5},1.6094379124341003,{"$f":"'Fixed Parameters'!F27","v":2.44},-0.83056208756589966]
["Average Household Size Within the MXD",{"$f":"B85","v":2.5},0.91629073187415511,{"$f":"'Fixed Parameters'!F28","v":0.85},6.6290731874155129E-2]
["Vehicles Owned per Capita within the MXD",{"$f":"B86","v":0.74},-0.30110509278392161,{"$f":"'Fixed Parameters'!F29","v":-0.28000000000000003},-2.1105092783921586E-2,"Note: if there are no households, the normalized value is set to zero"]
[]
[null,"HBW","HBO","NHB"]
["LOG ODDS",{"$f":"'Fixed Parameters'!B$21+SUMPRODUCT('Fixed Parameters'!B$22:B$29,$E$94:$E$101)","v":-5.080337944066188},{"$f":"'Fixed Parameters'!C$21+SUMPRODUCT('Fixed Parameters'!C$22:C$29,$E$94:$E$101)","v":-8.9953428016448242},{"$f":"'Fixed Parameters'!D$21+SUMPRODUCT('Fixed Parameters'!D$22:D$29,$E$94:$E$101)","v":-12.02734674425168}]
[]
["Transit Trip Probability Model"]
[]
["Variable","Value","Log","Mean of log","Normalized Value"]
["Employment within the MXD",{"$f":"B76","v":0},{"$f":"IF(B109=0,0,LN(B109))","v":0},{"$f":"'Fixed Parameters'!F36","v":6.7},{"$f":"C109-D109","v":-6.7}]
["Number of intersections per square mile within the MXD",{"$f":"'Trip Generation'!B26/PI_SiteArea*640","v":0.85333333333333328},{"$f":"IF(B110=0,0,LN(B110))","v":-0.15860503017663866},{"$f":"'Fixed Parameters'!F37","v":5.31},{"$f":"C110-D110","v":-5.4686050301766382}]
["Employment in thousands within a 30 minute trip of the MXD by transit",{"$f":"'Trip Generation'!B30/1000","v":20},{"$f":"IF(B111=0,0,LN(B111*1000))","v":9.9034875525361272},{"$f":"'Fixed Parameters'!F38","v":8.41},{"$f":"C111-D111","v":1.4934875525361271},"Note: the log is taken of the actual employment (not employment / 1000)"]
["Average Household Size Within the MXD",{"$f":"B100","v":2.5},{"$f":"IF(B112=0,0,LN(B112))","v":0.91629073187415511},{"$f":"'Fixed Parameters'!F39","v":0.85},{"$f":"C112-D112","v":6.6290731874155129E-2},"Note: if there are no households, the normalized value is set to zero"]
["Vehicles Owned per Capita within the MXD",{"$f":"B101","v":0.74},{"$f":"IF(B113=0,0,LN(B113))","v":-0.30110509278392161},{"$f":"'Fixed Parameters'!F40","v":-0.28000000000000003},{"$f":"C113-D113","v":-2.1105092783921586E-2}]
[]
[null,"HBW","HBO","NHB"]
["LOG ODDS",{"$f":"'Fixed Parameters'!B$35+SUMPRODUCT('Fixed Parameters'!B$36:B$40,$E$109:$E$113)","v":-13.007950517809203},{"$f":"'Fixed Parameters'!C$35+SUMPRODUCT('Fixed Parameters'!C$36:C$40,$E$109:$E$113)","v":-4.5776966732803821},{"$f":"'Fixed Parameters'!D$35+SUMPRODUCT('Fixed Parameters'!D$36:D$40,$E$109:$E$113)","v":-4.0222965938101423}]

{"sheet":"ROI Scenario","index":13,"n_rows":157,"n_cols":5,"rows_kept":157,"cut":false,"hidden":true,"merged":[]}
["Physical Stats"]
["Housing Units / Hotel Rooms",{"$f":"'Physical Outputs'!D39","v":1.9999999999999993}]
["Jobs",{"$f":"'Physical Outputs'!E39","v":0}]
[{"$f":"\"Net Rentable/Sellable \"&'Metric Translation'!B7","v":"Net Rentable/Sellable Square Feet"},{"$f":"'Physical Outputs'!C39-'Physical Outputs'!C38","v":3199.9999999999991}]
[{"$f":"\"Housing / Hotel Room Density (Per \"&'Metric Translation'!B10&\")\"","v":"Housing / Hotel Room Density (Per Acre)"},{"$f":"'Physical Outputs'!F39","v":19.359999999999992}]
[{"$f":"\"Job Density (Per \"&'Metric Translation'!B10&\")\"","v":"Job Density (Per Acre)"},{"$f":"'Physical Outputs'!G39","v":0}]
["FAR ◊",{"$f":"'Physical Outputs'!B39/PI_SiteArea","v":0.71111111111111092}]
["FAR (Excluding Internal Parking)",{"$f":"SUM('Physical Outputs'!B29:B35)/'Physical Inputs'!B34","v":0.71111111111111092}]
["Financial Stats"]
["Rental (Residential and Commercial)","Target Return","Actual Return"]
["IRR on Project Cost (Unleveraged Return)",{"$f":"'Mixed-Use Summary'!N6","v":0.12},{"$f":"'Mixed-Use Summary'!P6","v":0}]
["Cash-on-Cash (After Year 3)",{"$f":"'Mixed-Use Summary'!N5","v":0.12},{"$f":"'Mixed-Use Summary'!P5","v":0}]
["IRR on Investor Equity (Leveraged Return Before Tax)",{"$f":"'Mixed-Use Summary'!N7","v":0.25},{"$f":"'Mixed-Use Summary'!P7","v":0}]
["Debt Service Coverage Ratio (Year 3)",{"$f":"'Mixed-Use Summary'!N8","v":1.25},{"$f":"'Mixed-Use Summary'!P8","v":0}]
["IRR on Public Participation",{"$f":"'Mixed-Use Summary'!N9","v":0.05},{"$f":"'Mixed-Use Summary'!P9","v":0}]
["Owner Residential","Target Return","Actual Return"]
["Project Rate of Return",{"$f":"'Mixed-Use Summary'!T5","v":0.2},{"$f":"IF(PI_OwnerRenter=\"Owner\",'Mixed-Use Summary'!V5,\"N/A\")","v":0.19735438905370878}]
["Return to Equity",{"$f":"'Mixed-Use Summary'!T6","v":0.75},{"$f":"IF('ROI Scenario'!#REF!=\"Owner\",'Mixed-Use Summary'!V6,\"N/A\")","v":{"$error":"#REF!"}}]
[null,"Select Sensitivity Test ◊ :","Residual Land Value","Select Product Type ◊ :","Residential Rental"]
[{"$f":"IF(RS_Test=\"Residual Land Value\",\"Land Value / Lot Area \"&'Metric Translation'!B8,IF(RS_Test=\"Per Unit Impact Fee\",\"Impact Fee (Per Unit)\",IF(RS_Test=\"Per Employee Impact Fee\",\"Impact Fee (Per Employee)\",IF(RS_Test=\"Per Sqft Impact Fee\",\"Impact Fee (Per Square Foot)\",IF(RS_Seek=\"Residential Owner\",\"Parking Spaces (Per Unit)\",IF(RS_Seek=\"Residential Rental\",\"Parking Spaces (Per Unit)\",\"Parking Spaces (Per 1000 Square Feet)\"))))))","v":"Land Value / Lot Area Square Foot"},{"$f":"IF(RS_Seek=\"Residential Owner\",\"Sales Price\",IF(RS_Seek=\"Residential Rental\",\"Rental Rate\",\"Lease Rate\"))&\" Threshold\"","v":"Rental Rate Threshold"}]
[0,3.0394999999999999]
[20,3.3035000000000001]
[40,3.5672999999999999]
[80,4.0937999999999999]
[100,4.3582999999999998]
[150,5.0121000000000002]
[]
[{"$f":"IF(RS_Seek=\"Residential Owner\",\"Sales Price\",IF(RS_Seek=\"Residential Rental\",\"Rental Rate\",\"Lease Rate\"))&\" Function ◊\"","v":"Rental Rate Function ◊"}]
["Slope",{"$f":"LINEST(B21:B26,A21:A26)","v":1.3155530546623797E-2}]
["Y-Intercept",{"$f":"INTERCEPT(B21:B26,A21:A26)","v":3.0406405144694535}]
[{"$f":"A28","v":"Rental Rate Function ◊"},{"$f":"\"Y = \"&ROUND(B29,3)&\"x +\"&ROUND(B30,2)","v":"Y = 0.013x +3.04"}]
[]
[{"$f":"RS_Test&\" Calculator\"","v":"Residual Land Value Calculator"}]
[{"$f":"\"Target \"&IF(RS_Seek=\"Residential Owner\",\"Sales Price per Sqft.\",IF(RS_Seek=\"Residential Rental\",\"Rental Rate per Sqft.\",\"Lease Rate (NNN)\"))","v":"Target Rental Rate per Sqft."},1.5]
[{"$f":"\"Maximum \"&RS_Test","v":"Maximum Residual Land Value"},{"$f":"(B34-B30)/B29","v":-117.10972119363439}]
[]
[{"$f":"\"Required \"&IF(RS_Seek=\"Residential Owner\",\"Sales Price\",IF(RS_Seek=\"Residential Rental\",\"Rental Rate\",\"Lease Rate\"))&\" Calculator ◊\"","v":"Required Rental Rate Calculator ◊"}]
[{"$f":"\"Target \"&RS_Test","v":"Target Residual Land Value"},10]
[{"$f":"\"Minimum \"&IF(RS_Seek=\"Residential Owner\",\"Sales Price per Sqft.\",IF(RS_Seek=\"Residential Rental\",\"Rental Rate per Sqft.\",\"Lease Rate (NNN)\"))","v":"Minimum Rental Rate per Sqft."},{"$f":"(B29*B38)+B30","v":3.1721958199356917}]
[]
[]
[]
[]
[]
[]
[]
[]
[]
[]
[300,131.15790000000001]
[]
[]
[]
[]
[]
[]
[]
[]
[]
[]
[]
[]
[]
[]
[]
[]
[]
[]
[]
[]
[]
[]
[]
[]
[]
[]
[]
[]
[]
[]
[]
[]
[]
[]
[]
[]
[]
[]
[]
[]
[]
[]
[]
[]
[]
[]
[]
[]
[]
[]
[]
[]
[]
[]
[]
[]
[]
[]
[]
[]
[]
[]
[]
[]
[]
[]
[]
[]
[]
[]
[]
[]
[]
[]
[]
[]
[]
[]
[]
[]
[]
[]
["For selection: Do Not Alter"]
[{"$f":"IF(AND(PI_ResPct>0,PI_OwnerRenter=\"Owner\"),\"Residential Owner\",\"\")","v":"Residential Owner"},{"$f":"IF(ROWS(B$134:B134)>COUNTA($A$134:$A$141),\"\",INDEX($A$134:$A$141,SMALL(IF($A$134:$A$141<>\"\",ROW($A$134:$A$141)-ROW($A$134)+1),ROWS(B$134:B134))))","v":"Residential Owner"},{"$f":"IFERROR(INDEX($A$134:$A$141,_xlfn.AGGREGATE(15,6,(ROW($A$134:$A$141)-ROW($A$134)+1)/($A$134:$A$141<>\"\"),ROWS(B$134:B134))),\"\")","v":"Residential Owner"}]
[{"$f":"IF(AND(PI_ResPct>0,PI_OwnerRenter=\"Renter\"),\"Residential Rental\",\"\")","v":""},{"$f":"IF(ROWS(B$134:B135)>COUNTA($A$134:$A$141),\"\",INDEX($A$134:$A$141,SMALL(IF($A$134:$A$141<>\"\",ROW($A$134:$A$141)-ROW($A$134)+1),ROWS(B$134:B135))))","v":{"$error":"#NUM!"}},{"$f":"IFERROR(INDEX($A$134:$A$141,_xlfn.AGGREGATE(15,6,(ROW($A$134:$A$141)-ROW($A$134)+1)/($A$134:$A$141<>\"\"),ROWS(B$134:B135))),\"\")","v":""}]
[{"$f":"IF(PI_RetPct>0,\"Retail\",\"\")","v":""},{"$f":"IF(ROWS(B$134:B136)>COUNTA($A$134:$A$141),\"\",INDEX($A$134:$A$141,SMALL(IF($A$134:$A$141<>\"\",ROW($A$134:$A$141)-ROW($A$134)+1),ROWS(B$134:B136))))","v":{"$error":"#NUM!"}},{"$f":"IFERROR(INDEX($A$134:$A$141,_xlfn.AGGREGATE(15,6,(ROW($A$134:$A$141)-ROW($A$134)+1)/($A$134:$A$141<>\"\"),ROWS(B$134:B136))),\"\")","v":""}]
[{"$f":"IF(PI_OffPct>0,\"Office\",\"\")","v":""},{"$f":"IF(ROWS(B$134:B137)>COUNTA($A$134:$A$141),\"\",INDEX($A$134:$A$141,SMALL(IF($A$134:$A$141<>\"\",ROW($A$134:$A$141)-ROW($A$134)+1),ROWS(B$134:B137))))","v":{"$error":"#NUM!"}},{"$f":"IFERROR(INDEX($A$134:$A$141,_xlfn.AGGREGATE(15,6,(ROW($A$134:$A$141)-ROW($A$134)+1)/($A$134:$A$141<>\"\"),ROWS(B$134:B137))),\"\")","v":""}]
[{"$f":"IF(PI_IndPct>0,\"Industrial\",\"\")","v":""},{"$f":"IF(ROWS(B$134:B138)>COUNTA($A$134:$A$141),\"\",INDEX($A$134:$A$141,SMALL(IF($A$134:$A$141<>\"\",ROW($A$134:$A$141)-ROW($A$134)+1),ROWS(B$134:B138))))","v":{"$error":"#NUM!"}},{"$f":"IFERROR(INDEX($A$134:$A$141,_xlfn.AGGREGATE(15,6,(ROW($A$134:$A$141)-ROW($A$134)+1)/($A$134:$A$141<>\"\"),ROWS(B$134:B138))),\"\")","v":""}]
[{"$f":"IF(PI_PubPct>0,\"Public/Civic\",\"\")","v":""},{"$f":"IF(ROWS(B$134:B139)>COUNTA($A$134:$A$141),\"\",INDEX($A$134:$A$141,SMALL(IF($A$134:$A$141<>\"\",ROW($A$134:$A$141)-ROW($A$134)+1),ROWS(B$134:B139))))","v":{"$error":"#NUM!"}},{"$f":"IFERROR(INDEX($A$134:$A$141,_xlfn.AGGREGATE(15,6,(ROW($A$134:$A$141)-ROW($A$134)+1)/($A$134:$A$141<>\"\"),ROWS(B$134:B139))),\"\")","v":""}]
[{"$f":"IF(PI_EduPct>0,\"Education\",\"\")","v":""},{"$f":"IF(ROWS(B$134:B140)>COUNTA($A$134:$A$141),\"\",INDEX($A$134:$A$141,SMALL(IF($A$134:$A$141<>\"\",ROW($A$134:$A$141)-ROW($A$134)+1),ROWS(B$134:B140))))","v":{"$error":"#NUM!"}},{"$f":"IFERROR(INDEX($A$134:$A$141,_xlfn.AGGREGATE(15,6,(ROW($A$134:$A$141)-ROW($A$134)+1)/($A$134:$A$141<>\"\"),ROWS(B$134:B140))),\"\")","v":""}]
[{"$f":"IF(PI_HotelPct>0,\"Hotel\",\"\")","v":""},{"$f":"IF(ROWS(B$134:B141)>COUNTA($A$134:$A$141),\"\",INDEX($A$134:$A$141,SMALL(IF($A$134:$A$141<>\"\",ROW($A$134:$A$141)-ROW($A$134)+1),ROWS(B$134:B141))))","v":{"$error":"#NUM!"}},{"$f":"IFERROR(INDEX($A$134:$A$141,_xlfn.AGGREGATE(15,6,(ROW($A$134:$A$141)-ROW($A$134)+1)/($A$134:$A$141<>\"\"),ROWS(B$134:B141))),\"\")","v":""}]
[null,null,{"$f":"$C$134:INDEX($C$134:$C$141,COUNTIF($C$134:$C$141,\"?*\"))","v":"Residential Owner"}]
[]
[]
[]
["For final rent curve calc: Do not alter"]
[0,0.80130000000000001]
[500,126.5162]
[]
["For Product Type:"]
[{"$f":"PI_ResPct","v":1},{"$f":"IF(PI_OwnerRenter=\"Renter\",\"Residential Rental\",\"Residential Owner\")","v":"Residential Owner"},{"$f":"MAX(A151:A157)","v":1}]
[{"$f":"PI_RetPct","v":0},"Retail",{"$f":"MATCH(C151,A151:A157,0)","v":1}]
[{"$f":"PI_OffPct","v":0},"Office",{"$f":"INDEX(B151:B157,C152)","v":"Residential Owner"}]
[{"$f":"PI_IndPct","v":0},"Industrial"]
[{"$f":"PI_PubPct","v":0},"Public/Civic"]
[{"$f":"PI_EduPct","v":0},"Education"]
[{"$f":"PI_HotelPct","v":0},"Motel"]

{"sheet":"Green Infrastructure","index":14,"n_rows":201,"n_cols":12,"rows_kept":201,"cut":false,"hidden":true,"merged":[[132,1,132,2],[132,3,132,4],[126,5,126,6],[132,5,132,6],[82,13,82,19],[87,4,87,9],[114,1,114,2],[114,3,114,4],[120,1,120,2],[120,3,120,4],[114,5,114,6],[120,5,120,6],[88,4,88,9],[27,0,27,1],[28,2,28,5],[126,1,126,2],[126,3,126,4],[73,4,73,5]]}
["Green Infrastructure Stats"]
["Impervious Cover",{"$f":"(PO_BuildingFootprint+PO_ParkingSf)/PI_SiteArea","v":0.49555555555555547}]
["Water quality capture depth (in)",null,{"$f":"IF(B30=A201,GI_Runoff_Coefficient*GI_rainfall_depth,IF(GI_Recharge_Zone=\"yes\",(1.8*GI_Impervious_Cover+0.6),(0.5+GI_Impervious_Cover-0.2)))","v":0.49599999999999994}]
["Water quality capture volume required (gal)",null,{"$f":"GI_capture_depth/12*PI_SiteArea*7.48","v":1391.28}]
["Green Infrastructure Outputs","Square feet","Gallons Captured"]
["Landscape area (no stormwater feature)",{"$f":"PO_LandscapingSf-GI_Biofiltration_sf-GI_Rain_gardens_sf-B7","v":2270.0000000000005}]
["Above-ground conventional facility",{"$f":"IF(GI_Conventional_underground=\"no\",GI_Conventional_sf,0)","v":0}]
["Unbuildable Area",{"$f":"'Physical Outputs'!$C$24","v":0}]
["Parking area next to building",{"$f":"PO_ParkingSf-IF(GI_Rainwater_harvesting_parking=\"yes\",PO_ParkingSf,0)","v":629.99999999999989}]
["Building Footprint w/no green infrastructure",{"$f":"PO_BuildingFootprint-GI_Green_roof_sf-GI_Rainwater_harvesting_area+IF(GI_Rainwater_harvesting_parking=\"yes\",PO_ParkingSf,0)","v":1599.9999999999995}]
["Green roof",{"$f":"IF(GI_Water_quality_fee_in_lieu=\"yes\",0,GI_Green_roof_perc*PO_BuildingFootprint)","v":0},{"$f":"GI_Green_roof_sf*GI_Green_roof_depth*GI_Green_roof_Eff*7.48","v":0}]
["Green roof water harvesting area",{"$f":"IF(GI_Water_quality_fee_in_lieu=\"yes\",0,IF(GI_Green_roof_water_harvesting=\"no\",0,GI_Green_roof_sf))","v":0},{"$f":"GI_Green_roof_water_harvesting_area*GI_Green_roof_water_harvesting_depth*GI_Green_roof_water_harvesting_eff*7.48","v":0}]
["Rainwater harvesting area ◊",{"$f":"IF(GI_Water_quality_fee_in_lieu=\"yes\",0,(IF((GI_Rainwater_harvesting_perc*PO_BuildingFootprint)>(PO_BuildingFootprint-GI_Green_roof_sf),(PO_BuildingFootprint-GI_Green_roof_sf),(GI_Rainwater_harvesting_perc*PO_BuildingFootprint))+IF(GI_Rainwater_harvesting_parking=\"no\",0,PO_ParkingSf)))","v":0},{"$f":"GI_Rainwater_harvesting_area*GI_Rainwater_harvesting_depth*GI_Rainwater_harvesting_eff*7.48","v":0}]
["Biofiltration",{"$f":"IF(GI_Water_quality_fee_in_lieu=\"yes\",0,GI_Biofiltration_perc*PO_LandscapingSf)","v":0},{"$f":"GI_Biofiltration_sf*GI_Biofiltration_depth*GI_Biofiltration_eff*7.48","v":0}]
["Rain gardens",{"$f":"IF(GI_Water_quality_fee_in_lieu=\"yes\",0,IF(PO_LandscapingSf*B53>(PO_LandscapingSf-GI_Biofiltration_sf),PO_LandscapingSf-GI_Biofiltration_sf,PO_LandscapingSf*GI_Rain_garden_perc))","v":0},{"$f":"GI_Rain_gardens_sf*GI_Rain_garden_depth*GI_Rain_garden_eff*7.48","v":0}]
["Total green infrastructure water capture",null,{"$f":"SUM(C11:C15)","v":0}]
["Conventional water quality facility",{"$f":"IF(GI_Water_quality_fee_in_lieu=\"yes\",0,GI_Conventional_perc*PI_SiteArea)","v":0},{"$f":"IF(GI_Water_quality_fee_in_lieu=\"yes\",0,IF(C16<C4,C4-C16,0))","v":0}]
["Financial Stats"]
["Rental (Residential and Commercial)","Target Return","Actual Return"]
["Cash-on-Cash (After Year 3)",{"$f":"'Mixed-Use Summary'!N5","v":0.12},{"$f":"'Mixed-Use Summary'!P5","v":0}]
["IRR on Project Cost (Unleveraged Return)",{"$f":"'Mixed-Use Summary'!N6","v":0.12},{"$f":"'Mixed-Use Summary'!P6","v":0}]
["IRR on Investor Equity (Leveraged Return Before Tax)",{"$f":"'Mixed-Use Summary'!N7","v":0.25},{"$f":"'Mixed-Use Summary'!P7","v":0}]
["Debt Service Coverage Ratio (Year 3)",{"$f":"'Mixed-Use Summary'!N8","v":1.25},{"$f":"'Mixed-Use Summary'!P8","v":0}]
["IRR on Public Participation",{"$f":"'Mixed-Use Summary'!N9","v":0.05},{"$f":"'Mixed-Use Summary'!P9","v":0}]
["Owner Residential","Target Return","Actual Return"]
["Project Rate of Return",{"$f":"'Mixed-Use Summary'!T5","v":0.2},{"$f":"IF(PI_OwnerRenter=\"Owner\",'Mixed-Use Summary'!V5,\"N/A\")","v":0.19735438905370878}]
["Return to Equity",{"$f":"'Mixed-Use Summary'!T6","v":0.75},{"$f":"IF(PI_OwnerRenter=\"Owner\",'Mixed-Use Summary'!V6,\"N/A\")","v":0.98677194526854406}]
["Green Infrastructure & Stormwater Inputs ◊"]
["Stormwater Model",null,"Green Infrastructure Presets ◊"]
["Select model ","National -- simple method"]
[{"$f":"IF(B30=A201,\"\",\"Located in Barton Springs Zone?\")","v":""},"no",null,null,null,null,null," "]
[{"$f":"IF(B30=A201,\"Design storm rainfall depth?\"&\"  ◊\",\"\")","v":"Design storm rainfall depth?  ◊"},1]
["Runoff Coefficient",{"$f":"IF(B30=A201,IF((0.05+0.9*GI_Impervious_Cover)<0.2,0.2,(0.05+0.9*GI_Impervious_Cover)),IF((GI_Recharge_Zone=\"yes\"),(0.6072*GI_Impervious_Cover^2+0.2899*GI_Impervious_Cover+0.0075),(0.5463*GI_Impervious_Cover^2+0.328*GI_Impervious_Cover+0.0296)))","v":0.49599999999999994}]
[]
["Physical Inputs"]
["Percent of building footprint used as a Green Roof",null,"(enter percentage)"]
["Green roof media depth",1,"ft"]
["Green roof capture efficiency",0.2,"(enter percentage)"]
["Green roof connected to Rainwater Harvesting system"]
["Green roof water harvesting depth ◊",1,"ft"]
["Green roof water harvesting efficiency ◊",0.45,"(enter percentage)"]
["equivalent 7' X 8.5' cisterns",{"$f":"GI_Green_roof_rainwater_harvesting_volume/2500","v":0}]
["Green roof area needed for harvested water ◊",{"$f":"(GI_Green_roof_rainwater_harvesting_volume/7.48)/(0.005*(120-12))","v":0},"square feet"]
["Percent of building footprint used for Rainwater Harvesting (not inluded in green roof rainwater harvesting) ◊",null,"(enter percentage)"]
["Rainwater harvesting depth ◊",0.1,"ft"]
["Rainwater harvesting efficiency",0.85,"(enter percentage)"]
["Rainwater harvesting of parking area/structure ◊"]
["equivalent 7' x 8.5' cisterns",{"$f":"GI_Rainwater_harvesting_volume/2800","v":0}]
["Landscaping area needed ◊",{"$f":"(GI_Rainwater_harvesting_volume/7.48)/(0.005*(120-12))","v":0},"square feet"]
["Percent of landscaping/open space used for Biofiltration ◊",null,"(enter percentage)"]
["Biofiltration media depth ◊",4,"ft"]
["Biofiltration capture efficiency",0.8,"(enter percentage)"]
["Percent of landscaping/open space used for Rain Gardens ◊",null,"(enter percentage)"]
["Rain garden depth ◊",2,"ft"]
["Rain garden capture efficiency",0.8,"(enter percentage)"]
["% of site required for Conventional Facility ◊",{"$f":"ROUND(C17/7.48/4/PI_SiteArea/GI_Conventional_eff,2)","v":0}]
["Underground?","no"]
["Conventional Facility Capture Efficiency",0.92,"(enter percentage)"]
[]
["Stormwater & Green Infrastructure Cost per Gallon"]
["Green roof ◊",{"$f":"AVERAGE(22,46)","v":34},{"$f":"IF(GI_Water_quality_fee_in_lieu=\"yes\",0,C11*B61)","v":0},"total"]
["Biofiltration",{"$f":"AVERAGE(1,6)","v":3.5},{"$f":"IF(GI_Water_quality_fee_in_lieu=\"yes\",0,C14*B62)","v":0},"total"]
["Rain gardens",{"$f":"AVERAGE(3,6)","v":4.5},{"$f":"IF(GI_Water_quality_fee_in_lieu=\"yes\",0,C15*B63)","v":0},"total"]
["Rainwater harvesting",{"$f":"AVERAGE(1,7)","v":4},{"$f":"IF(GI_Water_quality_fee_in_lieu=\"yes\",0,(C12+C13)*B64)","v":0},"total"]
["Conventional above ground ◊",6.1,{"$f":"IF(GI_Water_quality_fee_in_lieu=\"yes\",0,IF(B57=\"no\",C17*B65,0))","v":0},"total"]
["Conventional underground ◊",10.5,{"$f":"IF(GI_Water_quality_fee_in_lieu=\"yes\",0,IF(B57=\"yes\",C17*B66,0))","v":0},"total"]
["Mitigation fee/Fee-in-lieu only? ◊","yes",0,"enter amount"]
["Total cost",null,{"$f":"SUM(C61:C67)","v":0}]
["Source:  The Costs of LID: Low-impact-development BMP installation and operation and maintenance costs in Orange County, CA"]
["Source: Costs of Urban Stormwater Control Practices, adjusted costs"]
["Source: Sand and Organic Filter, NPDES, USEPA, adjusted costs"]
[]
["Pollutant Loads"]
["Annual Rainfall",32.5,"in"]
[{"$f":"IF(B30=A201,\"% of annual rainfall producing runoff\"&\" ◊\",\"◊\")","v":"% of annual rainfall producing runoff ◊"},0.9,"(enter percentage)"]
["Total Sususpended Solids (TSS) reduction ◊",{"$f":"L94","v":0}]
["Total Nitrogen (TN) reduction ◊",{"$f":"L100","v":0}]
["Total Lead (TL) reduction ◊",{"$f":"L106","v":0}]
["F.Coli Reduction ◊",{"$f":"L112","v":0}]
["Total key pollutants removed (TSS, TN, TL)",{"$f":"IFERROR(K94+K100+K106,0)","v":0},"lbs/yr"]
[]
["Annual Runoff",{"$f":"IF(B30=A200,GI_Annual_Rainfall*GI_Runoff_Coefficient,GI_Annual_Rainfall*GI_runoff_frequency*GI_Runoff_Coefficient)","v":14.507999999999999},"in"]
["Building Type",{"$f":"IF(PI_IndPct>0,\"Industrial\",IF(MATCH(PI_ResType,PI_ResTypes,0)<3,\"Residential\",\"Commercial\"))","v":"Residential"}]
["Captured Volume Assumed Treated",0.92]
["Treatment Allocations for Landscape Devices"]
["Biofiltration",{"$f":"IFERROR((GI_Biofiltration_volume/(GI_Biofiltration_volume+GI_Raingarden_volume+GI_Conventional_volume)),0)","v":0}]
["Rain Gardens",{"$f":"IFERROR((GI_Raingarden_volume/(GI_Biofiltration_volume+GI_Raingarden_volume+GI_Conventional_volume)),0)","v":0}]
["Conventional water quality facility",{"$f":"IFERROR((GI_Conventional_volume/(GI_Biofiltration_volume+GI_Raingarden_volume+GI_Conventional_volume)),0)","v":0}]
[null,null,null,null,"Treated by",null,null,null,null,null,"% Reduction"]
["Total Suspended Solids","Pollutant Concentration (C ) (mg/l)","Area (sf)","Annual Load (lbs)","Green Roof","Green Roof w/Cistern","Water Harvesting","Biofiltration","Rain Gardens","Sed/Sand Filter","Total (lbs)"]
["Building",{"$f":"VLOOKUP($B$83,$A$117:$G$119,IF($B$30=$C$116,3,2),FALSE)","v":19},{"$f":"PO_BuildingFootprint","v":1599.9999999999995},{"$f":"0.226*GI_annual_runoff_in*B91*(C91/43560)","v":2.2882406611570243},{"$f":"IF(GI_Green_roof_water_harvesting_area>0,0,0.226*GI_annual_runoff_in*B91*($B$11/43560)*GI_vol_treated_perc*B141)","v":0},{"$f":"0.226*GI_annual_runoff_in*B91*(GI_Green_roof_water_harvesting_area/43560)*GI_vol_treated_perc*B142","v":0},{"$f":"0.226*GI_annual_runoff_in*B91*((GI_Rainwater_harvesting_area-IF(GI_Rainwater_harvesting_parking=\"yes\",PO_ParkingSf,0))/43560)*GI_vol_treated_perc*B145","v":0},{"$f":"0.226*GI_annual_runoff_in*B91*(C91-GI_Green_roof_sf-(GI_Rainwater_harvesting_area-IF(GI_Rainwater_harvesting_parking=\"yes\",PO_ParkingSf)))/43560*B86*GI_vol_treated_perc*$B143","v":0},{"$f":"0.226*GI_annual_runoff_in*B91*(C91-GI_Green_roof_sf-(GI_Rainwater_harvesting_area-IF(GI_Rainwater_harvesting_parking=\"yes\",PO_ParkingSf,0)))/43560*B87*GI_vol_treated_perc*$B144","v":0},{"$f":"0.226*GI_annual_runoff_in*B91*(C91-GI_Green_roof_sf-(GI_Rainwater_harvesting_area-IF(GI_Rainwater_harvesting_parking=\"yes\",PO_ParkingSf)))/43560*B88*GI_vol_treated_perc*$B146","v":0},{"$f":"SUM(E91:J91)","v":0}]
["Landscaping",{"$f":"VLOOKUP($B$83,$A$117:$G$119,IF($B$30=$E$116,5,4),FALSE)","v":602},{"$f":"PO_LandscapingSf","v":2270.0000000000005},{"$f":"0.226*$B$82*B92*(C92/43560)","v":102.86093398347109},null,null,null,{"$f":"0.226*GI_annual_runoff_in*B92*((GI_Biofiltration_sf/43560)+(((C92-GI_Biofiltration_sf-GI_Rain_gardens_sf-GI_Conventional_sf)/43560))*B86)*GI_vol_treated_perc*B143","v":0},{"$f":"0.226*GI_annual_runoff_in*B92*((GI_Rain_gardens_sf/43560)+(((C92-GI_Biofiltration_sf-GI_Rain_gardens_sf-GI_Conventional_sf)/43560))*B87)*GI_vol_treated_perc*B144","v":0},{"$f":"0.226*GI_annual_runoff_in*B92*((GI_Conventional_sf/43560)+(((C92-GI_Biofiltration_sf-GI_Rain_gardens_sf-GI_Conventional_sf)/43560))*B88)*GI_vol_treated_perc*B146","v":0},{"$f":"SUM(E92:J92)","v":0}]
["Parking",{"$f":"VLOOKUP($B$83,$A$117:$G$119,IF($B$30=$G116,7,6),FALSE)","v":173},{"$f":"PO_ParkingSf","v":629.99999999999989},{"$f":"0.226*$B$82*B93*(C93/43560)","v":8.203794396694212},null,null,{"$f":"IF(GI_Rainwater_harvesting_parking=\"yes\",(0.226*GI_annual_runoff_in*B93*PO_ParkingSf/43560),0)*GI_vol_treated_perc*B145","v":0},{"$f":"IF(GI_Rainwater_harvesting_parking=\"yes\",0,D93*B86*GI_vol_treated_perc*B143)","v":0},{"$f":"IF(GI_Rainwater_harvesting_parking=\"yes\",0,D93*B87*GI_vol_treated_perc*B144)","v":0},{"$f":"IF(GI_Rainwater_harvesting_parking=\"yes\",0,D93*B88*GI_vol_treated_perc*B146)","v":0},{"$f":"SUM(E93:J93)","v":0}]
[null,null,{"$f":"SUM(C91:C93)","v":4500},113.35296904132231,0,0,0,0,0,0,0,{"$f":"IF(GI_Water_quality_fee_in_lieu=\"yes\",0,IFERROR(K94/D94,))","v":0}]
[]
["Total Nitrogen","C (mg/l)","Area (sf)","Annual Load (lbs)","Green Roof","Green Roof w/Cistern","Water Harvesting","Biofiltration","Rain Gardens","Sed/Sand Filter","Total (lbs)"]
["Building",{"$f":"VLOOKUP($B$83,$A$123:$G$125,IF($B$30=$C$122,3,2),FALSE)","v":1.5},{"$f":"PO_BuildingFootprint","v":1599.9999999999995},{"$f":"0.226*$B$82*B97*(C97/43560)","v":0.18065057851239663},{"$f":"IF($B$39=\"yes\",0,0.226*GI_annual_runoff_in*B97*($B$11/43560)*GI_vol_treated_perc*C141)","v":0},{"$f":"0.226*GI_annual_runoff_in*B97*(GI_Green_roof_water_harvesting_area/43560)*GI_vol_treated_perc*C142","v":0},{"$f":"0.226*GI_annual_runoff_in*B97*((GI_Rainwater_harvesting_area-IF(GI_Rainwater_harvesting_parking=\"yes\",PO_ParkingSf,0))/43560)*GI_vol_treated_perc*C145","v":0},{"$f":"0.226*GI_annual_runoff_in*B97*(C97-GI_Green_roof_sf-(GI_Rainwater_harvesting_area-IF(GI_Rainwater_harvesting_parking=\"yes\",PO_ParkingSf)))/43560*$B$86*GI_vol_treated_perc*C143","v":0},{"$f":"0.226*GI_annual_runoff_in*B97*(C97-GI_Green_roof_sf-(GI_Rainwater_harvesting_area-IF(GI_Rainwater_harvesting_parking=\"yes\",PO_ParkingSf)))/43560*$B$87*GI_vol_treated_perc*C144","v":0},{"$f":"0.226*GI_annual_runoff_in*B97*(C97-GI_Green_roof_sf-(GI_Rainwater_harvesting_area-IF(GI_Rainwater_harvesting_parking=\"yes\",PO_ParkingSf)))/43560*$B$88*GI_vol_treated_perc*C146","v":0},{"$f":"SUM(E97:J97)","v":0}]
["Landscaping",{"$f":"VLOOKUP($B$83,$A$123:$G$125,IF($B$30=$E$122,5,4),FALSE)","v":9.1},{"$f":"PO_LandscapingSf","v":2270.0000000000005},{"$f":"0.226*$B$82*B98*(C98/43560)","v":1.5548745834710744},null,null,null,{"$f":"0.226*GI_annual_runoff_in*B98*((GI_Biofiltration_sf/43560)+(((C98-GI_Biofiltration_sf-GI_Rain_gardens_sf-GI_Conventional_sf)/43560))*B86)*GI_vol_treated_perc*C143","v":0},{"$f":"0.226*GI_annual_runoff_in*B98*((GI_Rain_gardens_sf/43560)+(((C98-GI_Biofiltration_sf-GI_Rain_gardens_sf-GI_Conventional_sf)/43560))*B87)*GI_vol_treated_perc*C144","v":0},{"$f":"0.226*GI_annual_runoff_in*B98*((GI_Conventional_sf/43560)+(((C98-GI_Biofiltration_sf-GI_Rain_gardens_sf-GI_Conventional_sf)/43560))*B88)*GI_vol_treated_perc*C146","v":0},{"$f":"SUM(E98:J98)","v":0}]
["Parking",{"$f":"VLOOKUP($B$83,$A$123:$G$125,IF($B$30=$G$122,7,6),FALSE)","v":2.1},{"$f":"PO_ParkingSf","v":629.99999999999989},{"$f":"0.226*$B$82*B99*(C99/43560)","v":9.9583631404958642E-2},null,null,{"$f":"IF(GI_Rainwater_harvesting_parking=\"yes\",(0.226*GI_annual_runoff_in*B99*PO_ParkingSf/43560),0)*GI_vol_treated_perc*C145","v":0},{"$f":"IF(GI_Rainwater_harvesting_parking=\"yes\",0,D99*$B$86*GI_vol_treated_perc*C$143)","v":0},{"$f":"IF(GI_Rainwater_harvesting_parking=\"yes\",0,D99*$B$87*GI_vol_treated_perc*C$144)","v":0},{"$f":"IF(GI_Rainwater_harvesting_parking=\"yes\",0,D99*$B$88*GI_vol_treated_perc*C146)","v":0},{"$f":"SUM(E99:J99)","v":0}]
[null,null,{"$f":"SUM(C97:C99)","v":4500},1.8351087933884298,0,0,0,0,0,0,0,{"$f":"IF(GI_Water_quality_fee_in_lieu=\"yes\",0,IFERROR(K100/D100,))","v":0}]
[]
["Lead (Pb)","C (mg/l)","Area (sf)","Annual Load (lbs)","Green Roof","Green Roof w/Cistern","Water Harvesting","Biofiltration","Rain Gardens","Sed/Sand Filter","Total (lbs)"]
["Building",{"$f":"VLOOKUP($B$83,$A$129:$G$131,IF($B$30=$C$128,3,2),FALSE)","v":2.1000000000000001E-2},{"$f":"PO_BuildingFootprint","v":1599.9999999999995},{"$f":"0.226*$B$82*B103*(C103/43560)","v":2.5291080991735534E-3},{"$f":"IF($B$39=\"yes\",0,0.226*GI_annual_runoff_in*B103*($B$11/43560)*GI_vol_treated_perc*D141)","v":0},{"$f":"0.226*GI_annual_runoff_in*B103*(GI_Green_roof_water_harvesting_area/43560)*GI_vol_treated_perc*D142","v":0},{"$f":"0.226*GI_annual_runoff_in*B103*((GI_Rainwater_harvesting_area-IF(GI_Rainwater_harvesting_parking=\"yes\",PO_ParkingSf,0))/43560)*GI_vol_treated_perc*D145","v":0},{"$f":"0.226*GI_annual_runoff_in*B103*(C103-GI_Green_roof_sf-(GI_Rainwater_harvesting_area-IF(GI_Rainwater_harvesting_parking=\"yes\",PO_ParkingSf)))/43560*$B$86*GI_vol_treated_perc*D143","v":0},{"$f":"0.226*GI_annual_runoff_in*B103*(C103-GI_Green_roof_sf-(GI_Rainwater_harvesting_area-IF(GI_Rainwater_harvesting_parking=\"yes\",PO_ParkingSf)))/43560*$B$87*GI_vol_treated_perc*D144","v":0},{"$f":"0.226*GI_annual_runoff_in*B103*(C103-GI_Green_roof_sf-(GI_Rainwater_harvesting_area-IF(GI_Rainwater_harvesting_parking=\"yes\",PO_ParkingSf)))/43560*$B$88*GI_vol_treated_perc*D146","v":0},{"$f":"SUM(E103:J103)","v":0}]
["Landscaping",{"$f":"VLOOKUP($B$83,$A$129:$G$131,IF($B$30=$E$128,5,4),FALSE)","v":1.7000000000000001E-2},{"$f":"PO_LandscapingSf","v":2270.0000000000005},{"$f":"0.226*$B$82*B104*(C104/43560)","v":2.9047107603305789E-3},null,null,null,{"$f":"0.226*GI_annual_runoff_in*B104*((GI_Biofiltration_sf/43560)+(((C104-GI_Biofiltration_sf-GI_Rain_gardens_sf-GI_Conventional_sf)/43560))*B86)*GI_vol_treated_perc*D143","v":0},{"$f":"0.226*GI_annual_runoff_in*B104*((GI_Rain_gardens_sf/43560)+(((C104-GI_Biofiltration_sf-GI_Rain_gardens_sf-GI_Conventional_sf)/43560))*B87)*GI_vol_treated_perc*D144","v":0},{"$f":"0.226*GI_annual_runoff_in*B104*((GI_Conventional_sf/43560)+(((C104-GI_Biofiltration_sf-GI_Rain_gardens_sf-GI_Conventional_sf)/43560))*B88)*GI_vol_treated_perc*D146","v":0},{"$f":"SUM(E104:J104)","v":0}]
["Parking",{"$f":"VLOOKUP($B$83,$A$129:$G$131,IF($B$30=$G128,7,6),FALSE)","v":0},{"$f":"PO_ParkingSf","v":629.99999999999989},{"$f":"0.226*$B$82*B105*(C105/43560)","v":0},null,null,{"$f":"IF(GI_Rainwater_harvesting_parking=\"yes\",(0.226*GI_annual_runoff_in*B105*PO_ParkingSf/43560),0)*GI_vol_treated_perc*D145","v":0},{"$f":"IF(GI_Rainwater_harvesting_parking=\"yes\",0,D105*$B$86*GI_vol_treated_perc*D$143)","v":0},{"$f":"IF(GI_Rainwater_harvesting_parking=\"yes\",0,D105*$B$87*GI_vol_treated_perc*D$144)","v":0},{"$f":"IF(GI_Rainwater_harvesting_parking=\"yes\",0,D105*$B$88*GI_vol_treated_perc*D146)","v":0},{"$f":"SUM(E105:J105)","v":0}]
[null,null,{"$f":"SUM(C103:C105)","v":4500},5.4338188595041328E-3,0,0,0,0,0,0,0,{"$f":"IF(GI_Water_quality_fee_in_lieu=\"yes\",0,IFERROR(K106/D106,))","v":0}]
[]
["F Coli Colonies (Billion colonies)","C (1,000 colonies/ml)","Area (sf)","Annual Load (bil. colonies)","Green Roof","Green Roof w/Cistern","Water Harvesting","Biofiltration","Rain Gardens","Sed/Sand Filter","Total (bil. colonies)"]
["Building",{"$f":"VLOOKUP($B$83,$A$135:$G$137,IF($B$30=$C$134,3,2),FALSE)","v":0.26},{"$f":"PO_BuildingFootprint","v":1599.9999999999995},{"$f":"103*$B$82*B109*(C109/43560)","v":14.27086280991735},{"$f":"IF($B$39=\"yes\",0,103*GI_annual_runoff_in*B109*($B$11/43560)*GI_vol_treated_perc*E141)","v":0},{"$f":"103*GI_annual_runoff_in*B109*(GI_Green_roof_water_harvesting_area/43560)*GI_vol_treated_perc*E142","v":0},{"$f":"103*GI_annual_runoff_in*B109*((GI_Rainwater_harvesting_area-IF(GI_Rainwater_harvesting_parking=\"yes\",PO_ParkingSf,0))/43560)*GI_vol_treated_perc*E145","v":0},{"$f":"103*GI_annual_runoff_in*B109*(C109-GI_Green_roof_sf-(GI_Rainwater_harvesting_area-IF(GI_Rainwater_harvesting_parking=\"yes\",PO_ParkingSf)))/43560*$B$86*GI_vol_treated_perc*E143","v":0},{"$f":"103*GI_annual_runoff_in*B109*(C109-GI_Green_roof_sf-(GI_Rainwater_harvesting_area-IF(GI_Rainwater_harvesting_parking=\"yes\",PO_ParkingSf)))/43560*$B$87*GI_vol_treated_perc*E144","v":0},{"$f":"103*GI_annual_runoff_in*B109*(C109-GI_Green_roof_sf-(GI_Rainwater_harvesting_area-IF(GI_Rainwater_harvesting_parking=\"yes\",PO_ParkingSf)))/43560*$B$88*GI_vol_treated_perc*E146","v":0},{"$f":"SUM(E109:J109)","v":0}]
["Landscaping",{"$f":"VLOOKUP($B$83,$A$135:$G$137,IF($B$30=$E$134,5,4),FALSE)","v":24},{"$f":"PO_LandscapingSf","v":2270.0000000000005},{"$f":"103*$B$82*B110*(C110/43560)","v":1868.9341487603308},null,null,null,{"$f":"103*GI_annual_runoff_in*B110*((GI_Biofiltration_sf/43560)+(((C110-GI_Biofiltration_sf-GI_Rain_gardens_sf-GI_Conventional_sf)/43560))*B86)*GI_vol_treated_perc*E143","v":0},{"$f":"103*GI_annual_runoff_in*B110*((GI_Rain_gardens_sf/43560)+(((C110-GI_Biofiltration_sf-GI_Rain_gardens_sf-GI_Conventional_sf)/43560))*B87)*GI_vol_treated_perc*E144","v":0},{"$f":"103*GI_annual_runoff_in*B110*((GI_Conventional_sf/43560)+(((C110-GI_Biofiltration_sf-GI_Rain_gardens_sf-GI_Conventional_sf)/43560))*B88)*GI_vol_treated_perc*E146","v":0},{"$f":"SUM(E110:J110)","v":0}]
["Parking",{"$f":"VLOOKUP($B$83,$A$135:$G$137,IF($B$30=$G134,7,6),FALSE)","v":17},{"$f":"PO_ParkingSf","v":629.99999999999989},{"$f":"103*$B$82*B111*(C111/43560)","v":367.40610743801642},null,null,{"$f":"IF(GI_Rainwater_harvesting_parking=\"yes\",(0.226*GI_annual_runoff_in*B111*PO_ParkingSf/43560),0)*GI_vol_treated_perc*E145","v":0},{"$f":"IF(GI_Rainwater_harvesting_parking=\"yes\",0,D111*$B$86*GI_vol_treated_perc*E$143)","v":0},{"$f":"IF(GI_Rainwater_harvesting_parking=\"yes\",0,D111*$B$87*GI_vol_treated_perc*E$144)","v":0},{"$f":"IF(GI_Rainwater_harvesting_parking=\"yes\",0,D111*$B$88*GI_vol_treated_perc*E146)","v":0},{"$f":"SUM(E111:J111)","v":0}]
[null,null,{"$f":"SUM(C109:C111)","v":4500},2250.6111190082647,0,0,0,0,0,0,0,{"$f":"IF(GI_Water_quality_fee_in_lieu=\"yes\",0,IFERROR(K112/D112,))","v":0}]
[]
["Lookup Tables"]
["Total Suspended Solids (mg/l)","Building",null,"Landscaping",null,"Parking"]
["Type",{"$f":"$A$201","v":"National -- simple method"},{"$f":"$A$200","v":"Local (Austin)"},{"$f":"$A$201","v":"National -- simple method"},{"$f":"$A$200","v":"Local (Austin)"},{"$f":"$A$201","v":"National -- simple method"},{"$f":"$A$200","v":"Local (Austin)"}]
["Residential",19,{"$f":"IF(GI_Impervious_Cover<=0.15,82.5,110)","v":110},602,{"$f":"IF(GI_Impervious_Cover<=0.15,82.5,110)","v":110},173,{"$f":"IF(GI_Impervious_Cover<=0.15,82.5,110)","v":110}]
["Commercial",9,{"$f":"IF(GI_Impervious_Cover<=0.15,82.5,110)","v":110},37,{"$f":"IF(GI_Impervious_Cover<=0.15,82.5,110)","v":110},27,{"$f":"IF(GI_Impervious_Cover<=0.15,82.5,110)","v":110}]
["Industrial",17,{"$f":"IF(GI_Impervious_Cover<=0.15,82.5,110)","v":110},37,{"$f":"IF(GI_Impervious_Cover<=0.15,82.5,110)","v":110},228,{"$f":"IF(GI_Impervious_Cover<=0.15,82.5,110)","v":110}]
[]
["Total Nitrogen (mg/l)","Building",null,"Landscaping",null,"Parking"]
["Type",{"$f":"$A$201","v":"National -- simple method"},{"$f":"$A$200","v":"Local (Austin)"},{"$f":"$A$201","v":"National -- simple method"},{"$f":"$A$200","v":"Local (Austin)"},{"$f":"$A$201","v":"National -- simple method"},{"$f":"$A$200","v":"Local (Austin)"}]
["Residential",1.5,{"$f":"IF(GI_Impervious_Cover<=0.15,1.27, 2)","v":2},9.1,{"$f":"IF(GI_Impervious_Cover<=0.15,1.27, 2)","v":2},2.1,{"$f":"IF(GI_Impervious_Cover<=0.15,1.27, 2)","v":2}]
["Commercial",2.1,{"$f":"IF(PI_ResType=\"Multifamily\",IF(GI_Impervious_Cover<=0.15,0.97,1.4),IF(GI_Impervious_Cover<=0.15,1.18,1.82))","v":1.82},0,{"$f":"IF(PI_ResType=\"Multifamily\",IF(GI_Impervious_Cover<=0.15,0.97,1.4),IF(GI_Impervious_Cover<=0.15,1.18,1.82))","v":1.82},1.9,{"$f":"IF(PI_ResType=\"Multifamily\",IF(GI_Impervious_Cover<=0.15,0.97,1.4),IF(GI_Impervious_Cover<=0.15,1.18,1.82))","v":1.82}]
["Industrial",0,{"$f":"IF(GI_Impervious_Cover<=0.15,1.18,1.82)","v":1.82},0,{"$f":"IF(GI_Impervious_Cover<=0.15,1.18,1.82)","v":1.82},0,{"$f":"IF(GI_Impervious_Cover<=0.15,1.18,1.82)","v":1.82}]
[]
["Lead (Pb) (mg/l)","Building",null,"Landscaping",null,"Parking"]
["Type",{"$f":"$A$201","v":"National -- simple method"},{"$f":"$A$200","v":"Local (Austin)"},{"$f":"$A$201","v":"National -- simple method"},{"$f":"$A$200","v":"Local (Austin)"},{"$f":"$A$201","v":"National -- simple method"},{"$f":"$A$200","v":"Local (Austin)"}]
["Residential",2.1000000000000001E-2,{"$f":"IF(GI_Impervious_Cover<=0.15,0.012, 0.02)","v":0.02},1.7000000000000001E-2,{"$f":"IF(GI_Impervious_Cover<=0.15,0.012, 0.02)","v":0.02},0,{"$f":"IF(GI_Impervious_Cover<=0.15,0.012, 0.02)","v":0.02}]
["Commercial",1.7000000000000001E-2,{"$f":"IF(PI_ResType=\"Multifamily\",IF(GI_Impervious_Cover<=0.15,0.012,0.02),IF(GI_Impervious_Cover<=0.15,0.017,0.03))","v":0.03},2.9000000000000001E-2,{"$f":"IF(PI_ResType=\"Multifamily\",IF(GI_Impervious_Cover<=0.15,0.012,0.02),IF(GI_Impervious_Cover<=0.15,0.017,0.03))","v":0.03},2.8000000000000001E-2,{"$f":"IF(PI_ResType=\"Multifamily\",IF(GI_Impervious_Cover<=0.15,0.012,0.02),IF(GI_Impervious_Cover<=0.15,0.017,0.03))","v":0.03}]
["Industrial",4.2999999999999997E-2,{"$f":"IF(GI_Impervious_Cover<=0.15,0.017,0.03)","v":0.03},2.9000000000000001E-2,{"$f":"IF(GI_Impervious_Cover<=0.15,0.017,0.03)","v":0.03},8.5000000000000006E-2,{"$f":"IF(GI_Impervious_Cover<=0.15,0.017,0.03)","v":0.03}]
[]
["F Coli (1,000 colonies/ml)","Building",null,"Landscaping",null,"Parking"]
["Type",{"$f":"$A$201","v":"National -- simple method"},{"$f":"$A$200","v":"Local (Austin)"},{"$f":"$A$201","v":"National -- simple method"},{"$f":"$A$200","v":"Local (Austin)"},{"$f":"$A$201","v":"National -- simple method"},{"$f":"$A$200","v":"Local (Austin)"}]
["Residential",0.26,26,24,24,17,17]
["Commercial",1.1000000000000001,1.1000000000000001,94,94,1.8,1.8]
["Industrial",5.8,5.8,94,94,2.7,2.7]
["Sources: New York State Stormwater Management Design Manual,","City of Austin, Environmental Criteria Manual, Section 1.6"]
[]
["Treatment Efficiencies","TSS","TN","Pb","F Coli"]
["Green Roof",0,0,0,0]
["Green Roof with Cistern Harvesting",1,1,1,1]
["Biofiltration",0.91500000000000004,0.56000000000000005,0.8,0.91600000000000004]
["Rain gardens",0.9,0.5,0.85,0.8]
["Water Harvesting",0.9,0.9,0.9,0.9]
["Sed/Sand Filter",0.87,0.31,0.8,0.36]
[]
["References"]
["Practice","Green Roof","Green Roof with Cistern Harvesting","Biofiltration","Rain gardens","Sed/Sand Filter"]
["TSS","Minnesota Stormwater Manual","WPD_BSZ_Load_Model_Draft_2007.02.8","Rusciano and Opropta, 2007","LID National Manual, 1990.","City of Austin, Environmental Criteria Manual, Section 1.6"]
[null,"Dietz, 2007","Hardin and Wanielista, 2007","EPA, 1999, \"Bioretention\"","Li, Kim, Sung, Chu, 2010","WPD_BSZ_Load_Model_Draft_2007.02.8"]
[null,"Guildford County, NC",null,null,null,"EPA, 1999, \"Sand Filter\""]
["TN","Rowe, 2010","WPD_BSZ_Load_Model_Draft_2007.02.8","Prince George's County Bioretention Manual","LID National Manual, 1990.","City of Austin, Environmental Criteria Manual, Section 1.6"]
[null,"Dietz, 2007","Hardin and Wanielista, 2007","EPA, 1999, \"Bioretention\"","Li, Kim, Sung, Chu, 2010","WPD_BSZ_Load_Model_Draft_2007.02.8"]
[null,"Berndtsson, 2010",null,null,null,"EPA, 1999, \"Sand Filter\""]
["Pb","Rowe, 2010","WPD_BSZ_Load_Model_Draft_2007.02.8","Prince George's County Bioretention Manual","LID National Manual, 1990.","City of Austin, Environmental Criteria Manual, Section 1.6"]
[null,"Alsup, Ebbs, Battaglia, Retzlaff, 2013","Hardin and Wanielista, 2007","EPA, 1999, \"Bioretention\"","Li, Kim, Sung, Chu, 2010","WPD_BSZ_Load_Model_Draft_2007.02.8"]
[null,"Berndtsson, 2010",null,null,null,"EPA, 1999, \"Sand Filter\""]
[null,"Gregoire, Clausen, 2011"]
["F coli","International Stormwater BMP Database: Fecal Indicator Bacteria","WPD_BSZ_Load_Model_Draft_2007.02.8","Rusciano and Opropta, 2007","LID National Manual, 1990.","City of Austin, Environmental Criteria Manual, Section 1.6"]
[null,"Clary et al., 2008","Hardin and Wanielista, 2007","EPA, 1999, \"Bioretention\"","Clary et al., 2008","EPA, 1999, \"Sand Filter\""]
[null,null,null,null,null,"Clary et al., 2008"]
[]
[]
[]
[]
[]
[]
[]
[]
[]
[]
[]
[]
[]
[]
[]
[]
[]
[]
[]
[]
[]
[]
[]
[]
[]
[]
[]
[]
[]
[]
[]
[]
[]
["Menu Data (Do Not Alter)"]
["yes"]
["no"]
[]
["Local (Austin)"]
["National -- simple method"]

{"sheet":"Trip Generation","index":15,"n_rows":216,"n_cols":8,"rows_kept":216,"cut":false,"hidden":true,"merged":[[46,0,46,2],[87,6,88,11],[184,9,184,10],[25,2,30,7]]}
["Physical Stats"]
["Housing Units / Hotel Rooms",{"$f":"'Physical Outputs'!D39","v":1.9999999999999993}]
["Jobs",{"$f":"'Physical Outputs'!E39","v":0}]
[{"$f":"\"Net Rentable/Sellable \"&'Metric Translation'!B7","v":"Net Rentable/Sellable Square Feet"},{"$f":"'Physical Outputs'!C39-'Physical Outputs'!C38","v":3199.9999999999991}]
[{"$f":"\"Housing / Hotel Room Density (Per \"&'Metric Translation'!B10&\")\"","v":"Housing / Hotel Room Density (Per Acre)"},{"$f":"'Physical Outputs'!F39","v":19.359999999999992}]
[{"$f":"\"Job Density (Per \"&'Metric Translation'!B10&\")\"","v":"Job Density (Per Acre)"},{"$f":"'Physical Outputs'!G39","v":0}]
["FAR ◊",{"$f":"'Physical Outputs'!B39/PI_SiteArea","v":0.71111111111111092}]
["Trip Generation Stats","Daily","AM Peak Hour","PM Peak Hour"]
["Total \"Baseline\" ITE Trips",{"$f":"SUM(F44:F46)+F57+F62+F68+F73+F80+B83","v":13.299999999999997},{"$f":"SUM(G44:G46)+G57+G62+G68+G73+G80+C83","v":1.0199999999999996},{"$f":"SUM(H44:H46)+H57+H62+H68+H73+H80+D83","v":1.2399999999999995}]
["MXD Model Vehicle Trips",{"$f":"'Trip Generation'!E128","v":13.022589091894332},{"$f":"'Trip Generation'!E129","v":1.0011186968632402},{"$f":"'Trip Generation'!E130","v":1.2149835136892482}]
["Trip Generation by Land Use - ITE","Daily","AM Peak Hour","PM Peak Hour"]
["Residential",{"$f":"Calculations!B26","v":13.299999999999997},{"$f":"Calculations!B27","v":1.0199999999999996},{"$f":"Calculations!B28","v":1.2399999999999995}]
["Retail",{"$f":"Calculations!B33","v":0},{"$f":"Calculations!B34","v":0},{"$f":"Calculations!B35","v":0}]
["Office/Public",{"$f":"Calculations!B40","v":0},{"$f":"Calculations!B41","v":0},{"$f":"Calculations!B42","v":0}]
["Education",{"$f":"Calculations!B54","v":0},{"$f":"Calculations!B55","v":0},{"$f":"Calculations!B56","v":0}]
["◊ Other",{"$f":"Calculations!B47","v":0},{"$f":"Calculations!B48","v":0},{"$f":"Calculations!B49","v":0}]
["Trip Reduction","Daily","AM Peak Hour","PM Peak Hour"]
["Internal Capture",{"$f":"'Trip Generation'!E113","v":0.13911093040365641},{"$f":"'Trip Generation'!E118","v":1.0097630798226603E-2},{"$f":"'Trip Generation'!E123","v":1.2374801132104488E-2}]
["Walking External",{"$f":"'Trip Generation'!E114","v":1.7839933206883842E-2},{"$f":"'Trip Generation'!E119","v":2.8754011685907899E-3},{"$f":"'Trip Generation'!E124","v":2.2226172182144822E-3}]
["Transit External",{"$f":"'Trip Generation'!E115","v":0.12046004449512288},{"$f":"'Trip Generation'!E120","v":5.9082711699416186E-3},{"$f":"'Trip Generation'!E125","v":1.0419067960432682E-2}]
["VMT Stats","HBW","HBO","NHB","Total"]
["ITE Daily VMT",{"$f":"'Trip Generation'!B194","v":13.039750552285307},{"$f":"'Trip Generation'!C194","v":19.972808415749871},{"$f":"'Trip Generation'!D194","v":4.6849519269849766},{"$f":"'Trip Generation'!E194","v":37.697510895020159}]
["MXD Daily Adjusted VMT ",{"$f":"'Trip Generation'!B195","v":12.865100895394482},{"$f":"'Trip Generation'!C195","v":19.520837813327134},{"$f":"'Trip Generation'!D195","v":4.5748140972143263},{"$f":"'Trip Generation'!E195","v":36.960752805935947}]
["Trip Generation ◊"]
["Site Context",null,"Model Background ◊"]
["Number of Intersections ◊",6,"The technical methods to estimate how much traffic a new development will create, known as trip generation analysis, have been standardized by the Institute of Transportation Engineers (ITE) and are used by traffic engineers across the country. However, these methods are generally based on data collected from single-use, automobile-dependent, suburban sites.\n\nTo help provide communities with better tools to analyze new development, EPA, in cooperation with ITE, worked with leading researchers and practitioners to develop new data and methods to estimate the trip-generation impacts of mixed-use developments. EPA analyzed six metropolitan regions, merging data from household travel surveys, GIS databases, and other sources to create consistent land use and travel measures. The resulting linked models estimate internal capture of trips within mixed-use developments as well as walking and transit use for trips starting or ending in mixed-use developments."]
["Is Transit (bus or rail) present within the site or across the street?  ◊","Yes"]
["Is the site in a Central Business District or TOD? ◊","No"]
["Employment within one mile of the MXD ◊",5000]
["Employment within a 30 minute Transit Trip (Door-to-door) ◊",20000]
["Average Vehicles Owned per Dwelling Unit ◊",1.85]
[]
["Average Household Size",null,"Trip Generation Presets ◊"]
["Single Family",3.2]
["Multi-Family",2.5]
["High Rise Condo",2.5]
[]
["Non Home-Based Trips Generated by Project Households ◊"]
["Completely Within the Project Site",0.25]
["With one trip end external to the Project Site",0.15]
["Completely outside the Project Site",0.6]
[]
["Number of Dwelling Units",null,"Gross Square Footage","Average Unit Size","Trip Gen. Equation","Daily Trips","AM Peak","PM Peak"]
["Single Family",{"$f":"IF(HousingType=\"SF\",'Physical Outputs'!D29,IF(HousingType=\"MH\",'Physical Outputs'!D29,0))","v":0},{"$f":"IF(B44>0,'Physical Outputs'!B$29,0)","v":0},{"$f":"IFERROR('Physical Outputs'!C$29/B44,0)","v":0},"Average Rate",{"$f":"IF(B44=0,0,IF('Fixed Parameters'!U86=\"No\",\"Error\",IF(E44=\"Average Rate\",$B44*'Fixed Parameters'!B86,IF(E44=\"Linear Equation\",$B44*'Fixed Parameters'!C86+'Fixed Parameters'!D86,EXP(LN($B44)*'Fixed Parameters'!E86+'Fixed Parameters'!F86)))))","v":0},{"$f":"IF(B44=0,0,IF('Fixed Parameters'!V86=\"No\",\"Error\",IF(E44=\"Average Rate\",$B44*'Fixed Parameters'!H86,IF(E44=\"Linear Equation\",$B44*'Fixed Parameters'!I86+'Fixed Parameters'!J86,EXP(LN($B44)*'Fixed Parameters'!K86+'Fixed Parameters'!L86)))))","v":0},{"$f":"IF(B44=0,0,IF('Fixed Parameters'!W86=\"No\",\"Error\",IF(E44=\"Average Rate\",$B44*'Fixed Parameters'!N86,IF(E44=\"Linear Equation\",$B44*'Fixed Parameters'!O86+'Fixed Parameters'!P86,EXP(LN($B44)*'Fixed Parameters'!Q86+'Fixed Parameters'!R86)))))","v":0}]
["Multi-Family",{"$f":"IF(AND(HousingType=\"MF\",RentalPct>0),'Physical Outputs'!D29,IF(HousingType=\"TH\",'Physical Outputs'!D29,0))","v":1.9999999999999993},{"$f":"IF(B45>0,'Physical Outputs'!B$29,0)","v":3199.9999999999991},{"$f":"IFERROR('Physical Outputs'!C$29/B45,0)","v":1600},"Average Rate",{"$f":"IF(B45=0,0,IF('Fixed Parameters'!U87=\"No\",\"Error\",IF(E45=\"Average Rate\",$B45*'Fixed Parameters'!B87,IF(E45=\"Linear Equation\",$B45*'Fixed Parameters'!C87+'Fixed Parameters'!D87,EXP(LN($B45)*'Fixed Parameters'!E87+'Fixed Parameters'!F87)))))","v":13.299999999999997},{"$f":"IF(B45=0,0,IF('Fixed Parameters'!V87=\"No\",\"Error\",IF(E45=\"Average Rate\",$B45*'Fixed Parameters'!H87,IF(E45=\"Linear Equation\",$B45*'Fixed Parameters'!I87+'Fixed Parameters'!J87,EXP(LN($B45)*'Fixed Parameters'!K87+'Fixed Parameters'!L87)))))","v":1.0199999999999996},{"$f":"IF(B45=0,0,IF('Fixed Parameters'!W87=\"No\",\"Error\",IF(E45=\"Average Rate\",$B45*'Fixed Parameters'!N87,IF(E45=\"Linear Equation\",$B45*'Fixed Parameters'!O87+'Fixed Parameters'!P87,EXP(LN($B45)*'Fixed Parameters'!Q87+'Fixed Parameters'!R87)))))","v":1.2399999999999995}]
["Condo",{"$f":"IF(AND(HousingType=\"MF\",RentalPct=0),'Physical Outputs'!D29,0)","v":0},{"$f":"IF(B46>0,'Physical Outputs'!B$29,0)","v":0},{"$f":"IFERROR('Physical Outputs'!C$29/B46,0)","v":0},"Average Rate",{"$f":"IF(B46=0,0,IF('Fixed Parameters'!U88=\"No\",\"Error\",IF(E46=\"Average Rate\",$B46*'Fixed Parameters'!B88,IF(E46=\"Linear Equation\",$B46*'Fixed Parameters'!C88+'Fixed Parameters'!D88,EXP(LN($B46)*'Fixed Parameters'!E88+'Fixed Parameters'!F88)))))","v":0},{"$f":"IF(B46=0,0,IF('Fixed Parameters'!V88=\"No\",\"Error\",IF(E46=\"Average Rate\",$B46*'Fixed Parameters'!H88,IF(E46=\"Linear Equation\",$B46*'Fixed Parameters'!I88+'Fixed Parameters'!J88,EXP(LN($B46)*'Fixed Parameters'!K88+'Fixed Parameters'!L88)))))","v":0},{"$f":"IF(B46=0,0,IF('Fixed Parameters'!W88=\"No\",\"Error\",IF(E46=\"Average Rate\",$B46*'Fixed Parameters'!N88,IF(E46=\"Linear Equation\",$B46*'Fixed Parameters'!O88+'Fixed Parameters'!P88,EXP(LN($B46)*'Fixed Parameters'!Q88+'Fixed Parameters'!R88)))))","v":0}]
[]
["Retail Program",null,"Gross Square Footage","Jobs","Trip Gen. Equation","Daily Trips","AM Peak","PM Peak"]
["General Retail other than those listed below",1,{"$f":"'Physical Outputs'!B$30*B49","v":0},{"$f":"'Physical Outputs'!E$30*B49","v":0},"Average Rate",{"$f":"IF(D49=0,0,IF('Fixed Parameters'!U91=\"No\",\"Error\",IF(E49=\"Average Rate\",$D49/'Fixed Parameters'!T91*'Fixed Parameters'!B91,IF(E49=\"Linear Equation\",$D49/'Fixed Parameters'!T91*'Fixed Parameters'!C91+'Fixed Parameters'!D91,EXP(LN($D49/'Fixed Parameters'!T91)*'Fixed Parameters'!E91+'Fixed Parameters'!F91)))))","v":0},{"$f":"IF(D49=0,0,IF('Fixed Parameters'!V91=\"No\",\"Error\",IF(E49=\"Average Rate\",$D49/'Fixed Parameters'!T91*'Fixed Parameters'!H91,IF(E49=\"Linear Equation\",$D49/'Fixed Parameters'!T91*'Fixed Parameters'!I91+'Fixed Parameters'!J91,EXP(LN($D49/'Fixed Parameters'!T91)*'Fixed Parameters'!K91+'Fixed Parameters'!L91)))))","v":0},{"$f":"IF(D49=0,0,IF('Fixed Parameters'!W91=\"No\",\"Error\",IF(E49=\"Average Rate\",$D49/'Fixed Parameters'!T91*'Fixed Parameters'!N91,IF(E49=\"Linear Equation\",$D49/'Fixed Parameters'!T91*'Fixed Parameters'!O91+'Fixed Parameters'!P91,EXP(LN($D49/'Fixed Parameters'!T91)*'Fixed Parameters'!Q91+'Fixed Parameters'!R91)))))","v":0}]
["Supermarket",0,{"$f":"'Physical Outputs'!B$30*B50","v":0},{"$f":"'Physical Outputs'!E$30*B50","v":0},"Average Rate",{"$f":"IF(D50=0,0,IF('Fixed Parameters'!U92=\"No\",\"Error\",IF(E50=\"Average Rate\",$D50/'Fixed Parameters'!T92*'Fixed Parameters'!B92,IF(E50=\"Linear Equation\",$D50/'Fixed Parameters'!T92*'Fixed Parameters'!C92+'Fixed Parameters'!D92,EXP(LN($D50/'Fixed Parameters'!T92)*'Fixed Parameters'!E92+'Fixed Parameters'!F92)))))","v":0},{"$f":"IF(D50=0,0,IF('Fixed Parameters'!V92=\"No\",\"Error\",IF(E50=\"Average Rate\",$D50/'Fixed Parameters'!T92*'Fixed Parameters'!H92,IF(E50=\"Linear Equation\",$D50/'Fixed Parameters'!T92*'Fixed Parameters'!I92+'Fixed Parameters'!J92,EXP(LN($D50/'Fixed Parameters'!T92)*'Fixed Parameters'!K92+'Fixed Parameters'!L92)))))","v":0},{"$f":"IF(D50=0,0,IF('Fixed Parameters'!W92=\"No\",\"Error\",IF(E50=\"Average Rate\",$D50/'Fixed Parameters'!T92*'Fixed Parameters'!N92,IF(E50=\"Linear Equation\",$D50/'Fixed Parameters'!T92*'Fixed Parameters'!O92+'Fixed Parameters'!P92,EXP(LN($D50/'Fixed Parameters'!T92)*'Fixed Parameters'!Q92+'Fixed Parameters'!R92)))))","v":0}]
["Bank",0,{"$f":"'Physical Outputs'!B$30*B51","v":0},{"$f":"'Physical Outputs'!E$30*B51","v":0},"Average Rate",{"$f":"IF(D51=0,0,IF('Fixed Parameters'!U93=\"No\",\"Error\",IF(E51=\"Average Rate\",$D51/'Fixed Parameters'!T93*'Fixed Parameters'!B93,IF(E51=\"Linear Equation\",$D51/'Fixed Parameters'!T93*'Fixed Parameters'!C93+'Fixed Parameters'!D93,EXP(LN($D51/'Fixed Parameters'!T93)*'Fixed Parameters'!E93+'Fixed Parameters'!F93)))))","v":0},{"$f":"IF(D51=0,0,IF('Fixed Parameters'!V93=\"No\",\"Error\",IF(E51=\"Average Rate\",$D51/'Fixed Parameters'!T93*'Fixed Parameters'!H93,IF(E51=\"Linear Equation\",$D51/'Fixed Parameters'!T93*'Fixed Parameters'!I93+'Fixed Parameters'!J93,EXP(LN($D51/'Fixed Parameters'!T93)*'Fixed Parameters'!K93+'Fixed Parameters'!L93)))))","v":0},{"$f":"IF(D51=0,0,IF('Fixed Parameters'!W93=\"No\",\"Error\",IF(E51=\"Average Rate\",$D51/'Fixed Parameters'!T93*'Fixed Parameters'!N93,IF(E51=\"Linear Equation\",$D51/'Fixed Parameters'!T93*'Fixed Parameters'!O93+'Fixed Parameters'!P93,EXP(LN($D51/'Fixed Parameters'!T93)*'Fixed Parameters'!Q93+'Fixed Parameters'!R93)))))","v":0}]
["Health Club",0,{"$f":"'Physical Outputs'!B$30*B52","v":0},{"$f":"'Physical Outputs'!E$30*B52","v":0},"Average Rate",{"$f":"IF(D52=0,0,IF('Fixed Parameters'!U94=\"No\",\"Error\",IF(E52=\"Average Rate\",$D52/'Fixed Parameters'!T94*'Fixed Parameters'!B94,IF(E52=\"Linear Equation\",$D52/'Fixed Parameters'!T94*'Fixed Parameters'!C94+'Fixed Parameters'!D94,EXP(LN($D52/'Fixed Parameters'!T94)*'Fixed Parameters'!E94+'Fixed Parameters'!F94)))))","v":0},{"$f":"IF(D52=0,0,IF('Fixed Parameters'!V94=\"No\",\"Error\",IF(E52=\"Average Rate\",$D52/'Fixed Parameters'!T94*'Fixed Parameters'!H94,IF(E52=\"Linear Equation\",$D52/'Fixed Parameters'!T94*'Fixed Parameters'!I94+'Fixed Parameters'!J94,EXP(LN($D52/'Fixed Parameters'!T94)*'Fixed Parameters'!K94+'Fixed Parameters'!L94)))))","v":0},{"$f":"IF(D52=0,0,IF('Fixed Parameters'!W94=\"No\",\"Error\",IF(E52=\"Average Rate\",$D52/'Fixed Parameters'!T94*'Fixed Parameters'!N94,IF(E52=\"Linear Equation\",$D52/'Fixed Parameters'!T94*'Fixed Parameters'!O94+'Fixed Parameters'!P94,EXP(LN($D52/'Fixed Parameters'!T94)*'Fixed Parameters'!Q94+'Fixed Parameters'!R94)))))","v":0}]
["Restaurant (non-fast food)",0,{"$f":"'Physical Outputs'!B$30*B53","v":0},{"$f":"'Physical Outputs'!E$30*B53","v":0},"Average Rate",{"$f":"IF(D53=0,0,IF('Fixed Parameters'!U95=\"No\",\"Error\",IF(E53=\"Average Rate\",$D53/'Fixed Parameters'!T95*'Fixed Parameters'!B95,IF(E53=\"Linear Equation\",$D53/'Fixed Parameters'!T95*'Fixed Parameters'!C95+'Fixed Parameters'!D95,EXP(LN($D53/'Fixed Parameters'!T95)*'Fixed Parameters'!E95+'Fixed Parameters'!F95)))))","v":0},{"$f":"IF(D53=0,0,IF('Fixed Parameters'!V95=\"No\",\"Error\",IF(E53=\"Average Rate\",$D53/'Fixed Parameters'!T95*'Fixed Parameters'!H95,IF(E53=\"Linear Equation\",$D53/'Fixed Parameters'!T95*'Fixed Parameters'!I95+'Fixed Parameters'!J95,EXP(LN($D53/'Fixed Parameters'!T95)*'Fixed Parameters'!K95+'Fixed Parameters'!L95)))))","v":0},{"$f":"IF(D53=0,0,IF('Fixed Parameters'!W95=\"No\",\"Error\",IF(E53=\"Average Rate\",$D53/'Fixed Parameters'!T95*'Fixed Parameters'!N95,IF(E53=\"Linear Equation\",$D53/'Fixed Parameters'!T95*'Fixed Parameters'!O95+'Fixed Parameters'!P95,EXP(LN($D53/'Fixed Parameters'!T95)*'Fixed Parameters'!Q95+'Fixed Parameters'!R95)))))","v":0}]
["Fast-Food Restaurant",0,{"$f":"'Physical Outputs'!B$30*B54","v":0},{"$f":"'Physical Outputs'!E$30*B54","v":0},"Average Rate",{"$f":"IF(D54=0,0,IF('Fixed Parameters'!U96=\"No\",\"Error\",IF(E54=\"Average Rate\",$D54/'Fixed Parameters'!T96*'Fixed Parameters'!B96,IF(E54=\"Linear Equation\",$D54/'Fixed Parameters'!T96*'Fixed Parameters'!C96+'Fixed Parameters'!D96,EXP(LN($D54/'Fixed Parameters'!T96)*'Fixed Parameters'!E96+'Fixed Parameters'!F96)))))","v":0},{"$f":"IF(D54=0,0,IF('Fixed Parameters'!V96=\"No\",\"Error\",IF(E54=\"Average Rate\",$D54/'Fixed Parameters'!T96*'Fixed Parameters'!H96,IF(E54=\"Linear Equation\",$D54/'Fixed Parameters'!T96*'Fixed Parameters'!I96+'Fixed Parameters'!J96,EXP(LN($D54/'Fixed Parameters'!T96)*'Fixed Parameters'!K96+'Fixed Parameters'!L96)))))","v":0},{"$f":"IF(D54=0,0,IF('Fixed Parameters'!W96=\"No\",\"Error\",IF(E54=\"Average Rate\",$D54/'Fixed Parameters'!T96*'Fixed Parameters'!N96,IF(E54=\"Linear Equation\",$D54/'Fixed Parameters'!T96*'Fixed Parameters'!O96+'Fixed Parameters'!P96,EXP(LN($D54/'Fixed Parameters'!T96)*'Fixed Parameters'!Q96+'Fixed Parameters'!R96)))))","v":0}]
["Gas Station",0,{"$f":"'Physical Outputs'!B$30*B55","v":0},{"$f":"'Physical Outputs'!E$30*B55","v":0},"Average Rate",{"$f":"IF(D55=0,0,IF('Fixed Parameters'!U97=\"No\",\"Error\",IF(E55=\"Average Rate\",$D55/'Fixed Parameters'!T97*'Fixed Parameters'!B97,IF(E55=\"Linear Equation\",$D55/'Fixed Parameters'!T97*'Fixed Parameters'!C97+'Fixed Parameters'!D97,EXP(LN($D55/'Fixed Parameters'!T97)*'Fixed Parameters'!E97+'Fixed Parameters'!F97)))))","v":0},{"$f":"IF(D55=0,0,IF('Fixed Parameters'!V97=\"No\",\"Error\",IF(E55=\"Average Rate\",$D55/'Fixed Parameters'!T97*'Fixed Parameters'!H97,IF(E55=\"Linear Equation\",$D55/'Fixed Parameters'!T97*'Fixed Parameters'!I97+'Fixed Parameters'!J97,EXP(LN($D55/'Fixed Parameters'!T97)*'Fixed Parameters'!K97+'Fixed Parameters'!L97)))))","v":0},{"$f":"IF(D55=0,0,IF('Fixed Parameters'!W97=\"No\",\"Error\",IF(E55=\"Average Rate\",$D55/'Fixed Parameters'!T97*'Fixed Parameters'!N97,IF(E55=\"Linear Equation\",$D55/'Fixed Parameters'!T97*'Fixed Parameters'!O97+'Fixed Parameters'!P97,EXP(LN($D55/'Fixed Parameters'!T97)*'Fixed Parameters'!Q97+'Fixed Parameters'!R97)))))","v":0}]
["Auto Repair",0,{"$f":"'Physical Outputs'!B$30*B56","v":0},{"$f":"'Physical Outputs'!E$30*B56","v":0},"Average Rate",{"$f":"IF(D56=0,0,IF('Fixed Parameters'!U98=\"No\",\"Error\",IF(E56=\"Average Rate\",$D56/'Fixed Parameters'!T98*'Fixed Parameters'!B98,IF(E56=\"Linear Equation\",$D56/'Fixed Parameters'!T98*'Fixed Parameters'!C98+'Fixed Parameters'!D98,EXP(LN($D56/'Fixed Parameters'!T98)*'Fixed Parameters'!E98+'Fixed Parameters'!F98)))))","v":0},{"$f":"IF(D56=0,0,IF('Fixed Parameters'!V98=\"No\",\"Error\",IF(E56=\"Average Rate\",$D56/'Fixed Parameters'!T98*'Fixed Parameters'!H98,IF(E56=\"Linear Equation\",$D56/'Fixed Parameters'!T98*'Fixed Parameters'!I98+'Fixed Parameters'!J98,EXP(LN($D56/'Fixed Parameters'!T98)*'Fixed Parameters'!K98+'Fixed Parameters'!L98)))))","v":0},{"$f":"IF(D56=0,0,IF('Fixed Parameters'!W98=\"No\",\"Error\",IF(E56=\"Average Rate\",$D56/'Fixed Parameters'!T98*'Fixed Parameters'!N98,IF(E56=\"Linear Equation\",$D56/'Fixed Parameters'!T98*'Fixed Parameters'!O98+'Fixed Parameters'!P98,EXP(LN($D56/'Fixed Parameters'!T98)*'Fixed Parameters'!Q98+'Fixed Parameters'!R98)))))","v":0}]
["Total",{"$f":"SUM(B49:B56)","v":1},{"$f":"SUM(C49:C56)","v":0},{"$f":"SUM(D49:D56)","v":0},"-",{"$f":"SUM(F49:F56)","v":0},{"$f":"SUM(G49:G56)","v":0},{"$f":"SUM(H49:H56)","v":0}]
[]
["Office/Public Program",null,"Gross Square Footage","Jobs","Trip Gen. Equation","Daily Trips","AM Peak","PM Peak"]
["Non-Medical",1,{"$f":"B60*('Physical Outputs'!B$31+'Physical Outputs'!B$33)","v":0},{"$f":"B60*('Physical Outputs'!E$31+'Physical Outputs'!E$33)","v":0},"Average Rate",{"$f":"IF(D60=0,0,IF('Fixed Parameters'!U101=\"No\",\"Error\",IF(E60=\"Average Rate\",$D60*'Fixed Parameters'!B101,IF(E60=\"Linear Equation\",$D60*'Fixed Parameters'!C101+'Fixed Parameters'!D101,EXP(LN($D60)*'Fixed Parameters'!E101+'Fixed Parameters'!F101)))))","v":0},{"$f":"IF(D60=0,0,IF('Fixed Parameters'!V101=\"No\",\"Error\",IF(E60=\"Average Rate\",$D60*'Fixed Parameters'!H101,IF(E60=\"Linear Equation\",$D60*'Fixed Parameters'!I101+'Fixed Parameters'!J101,EXP(LN($D60)*'Fixed Parameters'!K101+'Fixed Parameters'!L101)))))","v":0},{"$f":"IF(D60=0,0,IF('Fixed Parameters'!W101=\"No\",\"Error\",IF(E60=\"Average Rate\",$D60*'Fixed Parameters'!N101,IF(E60=\"Linear Equation\",$D60*'Fixed Parameters'!O101+'Fixed Parameters'!P101,EXP(LN($D60)*'Fixed Parameters'!Q101+'Fixed Parameters'!R101)))))","v":0}]
["Medical",0,{"$f":"B61*('Physical Outputs'!B$31+'Physical Outputs'!B$33)","v":0},{"$f":"B61*('Physical Outputs'!E$31+'Physical Outputs'!E$33)","v":0},"Average Rate",{"$f":"IF(D61=0,0,IF('Fixed Parameters'!U102=\"No\",\"Error\",IF(E61=\"Average Rate\",$D61*'Fixed Parameters'!B102,IF(E61=\"Linear Equation\",$D61*'Fixed Parameters'!C102+'Fixed Parameters'!D102,EXP(LN($D61)*'Fixed Parameters'!E102+'Fixed Parameters'!F102)))))","v":0},{"$f":"IF(D61=0,0,IF('Fixed Parameters'!V102=\"No\",\"Error\",IF(E61=\"Average Rate\",$D61*'Fixed Parameters'!H102,IF(E61=\"Linear Equation\",$D61*'Fixed Parameters'!I102+'Fixed Parameters'!J102,EXP(LN($D61)*'Fixed Parameters'!K102+'Fixed Parameters'!L102)))))","v":0},{"$f":"IF(D61=0,0,IF('Fixed Parameters'!W102=\"No\",\"Error\",IF(E61=\"Average Rate\",$D61*'Fixed Parameters'!N102,IF(E61=\"Linear Equation\",$D61*'Fixed Parameters'!O102+'Fixed Parameters'!P102,EXP(LN($D61)*'Fixed Parameters'!Q102+'Fixed Parameters'!R102)))))","v":0}]
["Total",{"$f":"SUM(B60:B61)","v":1},{"$f":"SUM(C60:C61)","v":0},{"$f":"SUM(D60:D61)","v":0},"-",{"$f":"SUM(F60:F61)","v":0},{"$f":"SUM(G60:G61)","v":0},{"$f":"SUM(H60:H61)","v":0}]
[]
["Industrial Program",null,"Gross Square Footage","Jobs","Trip Gen. Equation","Daily Trips","AM Peak","PM Peak"]
["Light Industrial",1,{"$f":"B65*'Physical Outputs'!B$32","v":0},{"$f":"'Physical Outputs'!E$32*B65","v":0},"Average Rate",{"$f":"IF(D65=0,0,IF('Fixed Parameters'!U105=\"No\",\"Error\",IF(E65=\"Average Rate\",$D65*'Fixed Parameters'!B105,IF(E65=\"Linear Equation\",$D65*'Fixed Parameters'!C105+'Fixed Parameters'!D105,EXP(LN($D65)*'Fixed Parameters'!E105+'Fixed Parameters'!F105)))))","v":0},{"$f":"IF(D65=0,0,IF('Fixed Parameters'!V105=\"No\",\"Error\",IF(E65=\"Average Rate\",$D65*'Fixed Parameters'!H105,IF(E65=\"Linear Equation\",$D65*'Fixed Parameters'!I105+'Fixed Parameters'!J105,EXP(LN($D65)*'Fixed Parameters'!K105+'Fixed Parameters'!L105)))))","v":0},{"$f":"IF(D65=0,0,IF('Fixed Parameters'!W105=\"No\",\"Error\",IF(E65=\"Average Rate\",$D65*'Fixed Parameters'!N105,IF(E65=\"Linear Equation\",$D65*'Fixed Parameters'!O105+'Fixed Parameters'!P105,EXP(LN($D65)*'Fixed Parameters'!Q105+'Fixed Parameters'!R105)))))","v":0}]
["Manufacturing",0,{"$f":"B66*'Physical Outputs'!B$32","v":0},{"$f":"'Physical Outputs'!E$32*B66","v":0},"Average Rate",{"$f":"IF(D66=0,0,IF('Fixed Parameters'!U106=\"No\",\"Error\",IF(E66=\"Average Rate\",$D66*'Fixed Parameters'!B106,IF(E66=\"Linear Equation\",$D66*'Fixed Parameters'!C106+'Fixed Parameters'!D106,EXP(LN($D66)*'Fixed Parameters'!E106+'Fixed Parameters'!F106)))))","v":0},{"$f":"IF(D66=0,0,IF('Fixed Parameters'!V106=\"No\",\"Error\",IF(E66=\"Average Rate\",$D66*'Fixed Parameters'!H106,IF(E66=\"Linear Equation\",$D66*'Fixed Parameters'!I106+'Fixed Parameters'!J106,EXP(LN($D66)*'Fixed Parameters'!K106+'Fixed Parameters'!L106)))))","v":0},{"$f":"IF(D66=0,0,IF('Fixed Parameters'!W106=\"No\",\"Error\",IF(E66=\"Average Rate\",$D66*'Fixed Parameters'!N106,IF(E66=\"Linear Equation\",$D66*'Fixed Parameters'!O106+'Fixed Parameters'!P106,EXP(LN($D66)*'Fixed Parameters'!Q106+'Fixed Parameters'!R106)))))","v":0}]
["Warehousing / Self-Storage",0,{"$f":"B67*'Physical Outputs'!B$32","v":0},{"$f":"'Physical Outputs'!E$32*B67","v":0},"Average Rate",{"$f":"IF(D67=0,0,IF('Fixed Parameters'!U107=\"No\",\"Error\",IF(E67=\"Average Rate\",$D67*'Fixed Parameters'!B107,IF(E67=\"Linear Equation\",$D67*'Fixed Parameters'!C107+'Fixed Parameters'!D107,EXP(LN($D67)*'Fixed Parameters'!E107+'Fixed Parameters'!F107)))))","v":0},{"$f":"IF(D67=0,0,IF('Fixed Parameters'!V107=\"No\",\"Error\",IF(E67=\"Average Rate\",$D67*'Fixed Parameters'!H107,IF(E67=\"Linear Equation\",$D67*'Fixed Parameters'!I107+'Fixed Parameters'!J107,EXP(LN($D67)*'Fixed Parameters'!K107+'Fixed Parameters'!L107)))))","v":0},{"$f":"IF(D67=0,0,IF('Fixed Parameters'!W107=\"No\",\"Error\",IF(E67=\"Average Rate\",$D67*'Fixed Parameters'!N107,IF(E67=\"Linear Equation\",$D67*'Fixed Parameters'!O107+'Fixed Parameters'!P107,EXP(LN($D67)*'Fixed Parameters'!Q107+'Fixed Parameters'!R107)))))","v":0}]
["Total",{"$f":"SUM(B65:B67)","v":1},{"$f":"SUM(C65:C67)","v":0},{"$f":"SUM(D65:D67)","v":0},"-",{"$f":"SUM(F65:F67)","v":0},{"$f":"SUM(G65:G67)","v":0},{"$f":"SUM(H65:H67)","v":0}]
[]
["Hotel Program",null,"Gross Square Footage","Jobs","Trip Gen. Equation","Daily Trips","AM Peak","PM Peak"]
["Hotel (including restaurant, facilities, etc…)",1,{"$f":"B71*'Physical Outputs'!B$35","v":0},{"$f":"B71*'Physical Outputs'!E$35","v":0},"Average Rate",{"$f":"IF(D71=0,0,IF('Fixed Parameters'!U110=\"No\",\"Error\",IF(E71=\"Average Rate\",$D71*'Fixed Parameters'!B110,IF(E71=\"Linear Equation\",$D71*'Fixed Parameters'!C110+'Fixed Parameters'!D110,EXP(LN($D71)*'Fixed Parameters'!E110+'Fixed Parameters'!F110)))))","v":0},{"$f":"IF(D71=0,0,IF('Fixed Parameters'!V110=\"No\",\"Error\",IF(E71=\"Average Rate\",$D71*'Fixed Parameters'!H110,IF(E71=\"Linear Equation\",$D71*'Fixed Parameters'!I110+'Fixed Parameters'!J110,EXP(LN($D71)*'Fixed Parameters'!K110+'Fixed Parameters'!L110)))))","v":0},{"$f":"IF(D71=0,0,IF('Fixed Parameters'!W110=\"No\",\"Error\",IF(E71=\"Average Rate\",$D71*'Fixed Parameters'!N110,IF(E71=\"Linear Equation\",$D71*'Fixed Parameters'!O110+'Fixed Parameters'!P110,EXP(LN($D71)*'Fixed Parameters'!Q110+'Fixed Parameters'!R110)))))","v":0}]
["Motel",0,{"$f":"B72*'Physical Outputs'!B$35","v":0},{"$f":"B72*'Physical Outputs'!E$35","v":0},"Average Rate",{"$f":"IF(D72=0,0,IF('Fixed Parameters'!U111=\"No\",\"Error\",IF(E72=\"Average Rate\",$D72*'Fixed Parameters'!B111,IF(E72=\"Linear Equation\",$D72*'Fixed Parameters'!C111+'Fixed Parameters'!D111,EXP(LN($D72)*'Fixed Parameters'!E111+'Fixed Parameters'!F111)))))","v":0},{"$f":"IF(D72=0,0,IF('Fixed Parameters'!V111=\"No\",\"Error\",IF(E72=\"Average Rate\",$D72*'Fixed Parameters'!H111,IF(E72=\"Linear Equation\",$D72*'Fixed Parameters'!I111+'Fixed Parameters'!J111,EXP(LN($D72)*'Fixed Parameters'!K111+'Fixed Parameters'!L111)))))","v":0},{"$f":"IF(D72=0,0,IF('Fixed Parameters'!W111=\"No\",\"Error\",IF(E72=\"Average Rate\",$D72*'Fixed Parameters'!N111,IF(E72=\"Linear Equation\",$D72*'Fixed Parameters'!O111+'Fixed Parameters'!P111,EXP(LN($D72)*'Fixed Parameters'!Q111+'Fixed Parameters'!R111)))))","v":0}]
["Total",{"$f":"SUM(B71:B72)","v":1},{"$f":"SUM(C71:C72)","v":0},{"$f":"SUM(D71:D72)","v":0},"-",{"$f":"SUM(F71:F72)","v":0},{"$f":"SUM(G71:G72)","v":0},{"$f":"SUM(H71:H72)","v":0}]
[]
["Educational Program",null,"Gross Square Footage","Students","Trip Gen. Equation","Daily Trips","AM Peak","PM Peak"]
["University",1,{"$f":"B76*'Physical Outputs'!B$34","v":0},null,"Average Rate",{"$f":"IF(D76=0,0,IF('Fixed Parameters'!U114=\"No\",\"Error\",IF(E76=\"Average Rate\",$D76*'Fixed Parameters'!B114,IF(E76=\"Linear Equation\",$D76*'Fixed Parameters'!C114+'Fixed Parameters'!D114,EXP(LN($D76)*'Fixed Parameters'!E114+'Fixed Parameters'!F114)))))","v":0},{"$f":"IF(D76=0,0,IF('Fixed Parameters'!V114=\"No\",\"Error\",IF(E76=\"Average Rate\",$D76*'Fixed Parameters'!H114,IF(E76=\"Linear Equation\",$D76*'Fixed Parameters'!I114+'Fixed Parameters'!J114,EXP(LN($D76)*'Fixed Parameters'!K114+'Fixed Parameters'!L114)))))","v":0},{"$f":"IF(D76=0,0,IF('Fixed Parameters'!W114=\"No\",\"Error\",IF(E76=\"Average Rate\",$D76*'Fixed Parameters'!N114,IF(E76=\"Linear Equation\",$D76*'Fixed Parameters'!O114+'Fixed Parameters'!P114,EXP(LN($D76)*'Fixed Parameters'!Q114+'Fixed Parameters'!R114)))))","v":0}]
["High School",0,{"$f":"B77*'Physical Outputs'!B$34","v":0},0,"Average Rate",{"$f":"IF(D77=0,0,IF('Fixed Parameters'!U115=\"No\",\"Error\",IF(E77=\"Average Rate\",$D77*'Fixed Parameters'!B115,IF(E77=\"Linear Equation\",$D77*'Fixed Parameters'!C115+'Fixed Parameters'!D115,EXP(LN($D77)*'Fixed Parameters'!E115+'Fixed Parameters'!F115)))))","v":0},{"$f":"IF(D77=0,0,IF('Fixed Parameters'!V115=\"No\",\"Error\",IF(E77=\"Average Rate\",$D77*'Fixed Parameters'!H115,IF(E77=\"Linear Equation\",$D77*'Fixed Parameters'!I115+'Fixed Parameters'!J115,EXP(LN($D77)*'Fixed Parameters'!K115+'Fixed Parameters'!L115)))))","v":0},{"$f":"IF(D77=0,0,IF('Fixed Parameters'!W115=\"No\",\"Error\",IF(E77=\"Average Rate\",$D77*'Fixed Parameters'!N115,IF(E77=\"Linear Equation\",$D77*'Fixed Parameters'!O115+'Fixed Parameters'!P115,EXP(LN($D77)*'Fixed Parameters'!Q115+'Fixed Parameters'!R115)))))","v":0}]
["Middle School",0,{"$f":"B78*'Physical Outputs'!B$34","v":0},0,"Average Rate",{"$f":"IF(D78=0,0,IF('Fixed Parameters'!U116=\"No\",\"Error\",IF(E78=\"Average Rate\",$D78*'Fixed Parameters'!B116,IF(E78=\"Linear Equation\",$D78*'Fixed Parameters'!C116+'Fixed Parameters'!D116,EXP(LN($D78)*'Fixed Parameters'!E116+'Fixed Parameters'!F116)))))","v":0},{"$f":"IF(D78=0,0,IF('Fixed Parameters'!V116=\"No\",\"Error\",IF(E78=\"Average Rate\",$D78*'Fixed Parameters'!H116,IF(E78=\"Linear Equation\",$D78*'Fixed Parameters'!I116+'Fixed Parameters'!J116,EXP(LN($D78)*'Fixed Parameters'!K116+'Fixed Parameters'!L116)))))","v":0},{"$f":"IF(D78=0,0,IF('Fixed Parameters'!W116=\"No\",\"Error\",IF(E78=\"Average Rate\",$D78*'Fixed Parameters'!N116,IF(E78=\"Linear Equation\",$D78*'Fixed Parameters'!O116+'Fixed Parameters'!P116,EXP(LN($D78)*'Fixed Parameters'!Q116+'Fixed Parameters'!R116)))))","v":0}]
["Elementary",0,{"$f":"B79*'Physical Outputs'!B$34","v":0},0,"Average Rate",{"$f":"IF(D79=0,0,IF('Fixed Parameters'!U117=\"No\",\"Error\",IF(E79=\"Average Rate\",$D79*'Fixed Parameters'!B117,IF(E79=\"Linear Equation\",$D79*'Fixed Parameters'!C117+'Fixed Parameters'!D117,EXP(LN($D79)*'Fixed Parameters'!E117+'Fixed Parameters'!F117)))))","v":0},{"$f":"IF(D79=0,0,IF('Fixed Parameters'!V117=\"No\",\"Error\",IF(E79=\"Average Rate\",$D79*'Fixed Parameters'!H117,IF(E79=\"Linear Equation\",$D79*'Fixed Parameters'!I117+'Fixed Parameters'!J117,EXP(LN($D79)*'Fixed Parameters'!K117+'Fixed Parameters'!L117)))))","v":0},{"$f":"IF(D79=0,0,IF('Fixed Parameters'!W117=\"No\",\"Error\",IF(E79=\"Average Rate\",$D79*'Fixed Parameters'!N117,IF(E79=\"Linear Equation\",$D79*'Fixed Parameters'!O117+'Fixed Parameters'!P117,EXP(LN($D79)*'Fixed Parameters'!Q117+'Fixed Parameters'!R117)))))","v":0}]
["Total",{"$f":"SUM(B76:B79)","v":1},{"$f":"SUM(C76:C79)","v":0},0,"-",0,0,0]
[]
["Other","Daily","AM Peak Hour","PM Peak Hour"]
["Trips from Land uses not covered above ",0,0,0]
["Jobs in those Land Uses",0]
[]
["VMT Inputs","HBW","HBO","NHB"]
["Average Trip Length in the Region  ◊",9.5399999999999991,4.62,4.88]
["Average Trip Length in the Traffic Analysis Zone ",4.7699999999999996,2.31,2.44]
[]
[]
["Model Application - All Trips"]
["Baseline # of External Trips (ITE Model)","HBW","HBO","NHB","Total"]
["Daily",{"$f":"Calculations!D69","v":2.7337003254266894},{"$f":"Calculations!E69","v":8.6462374094155283},{"$f":"Calculations!F69","v":1.9200622651577774},{"$f":"SUM(B93:D93)","v":13.299999999999995}]
["AM Peak Hour",{"$f":"Calculations!D70","v":0.45818061412980299},{"$f":"Calculations!E70","v":0.52654933063105647},{"$f":"Calculations!F70","v":3.5270055239139869E-2},{"$f":"SUM(B94:D94)","v":1.0199999999999994}]
["PM Peak Hour",{"$f":"Calculations!D71","v":0.34823573478012071},{"$f":"Calculations!E71","v":0.69581686223814709},{"$f":"Calculations!F71","v":0.19594740298173197},{"$f":"SUM(B95:D95)","v":1.2399999999999998}]
[]
["%  External Trip Reduction \n(predicted by MXD Model) - Daily","HBW","HBO","NHB","Total"]
["Internal Capture",{"$f":"EXP(Calculations!B$89)/(EXP(Calculations!B$89)+1)","v":7.2568664665759123E-3},{"$f":"EXP(Calculations!C$89)/(EXP(Calculations!C$89)+1)","v":1.2459664515688494E-2},{"$f":"EXP(Calculations!D$89)/(EXP(Calculations!D$89)+1)","v":6.0121043715934651E-3},{"$f":"IFERROR('Trip Generation'!E113/'Trip Generation'!E93,)","v":1.0459468451402741E-2}]
["Walking External",{"$f":"EXP(Calculations!B$104)/(EXP(Calculations!B$104)+1)","v":6.1793851630039184E-3},{"$f":"EXP(Calculations!C$104)/(EXP(Calculations!C$104)+1)","v":1.2397051785681678E-4},{"$f":"EXP(Calculations!D$104)/(EXP(Calculations!D$104)+1)","v":5.9784290648496941E-6},{"$f":"IFERROR('Trip Generation'!E114/('Trip Generation'!E93-'Trip Generation'!E113),)","v":1.3555264475328501E-3}]
["Transit External",{"$f":"IF('Trip Generation'!$B27=\"No\",0,EXP(Calculations!B$116)/(EXP(Calculations!B$116)+1))","v":2.2424248388868105E-6},{"$f":"IF('Trip Generation'!$B27=\"No\",0,EXP(Calculations!C$116)/(EXP(Calculations!C$116)+1))","v":1.0173970296375668E-2},{"$f":"IF('Trip Generation'!$B27=\"No\",0,EXP(Calculations!D$116)/(EXP(Calculations!D$116)+1))","v":1.7596595210214311E-2},{"$f":"IFERROR('Trip Generation'!E115/('Trip Generation'!E93-'Trip Generation'!E113),)","v":9.1528804671261871E-3}]
[]
["%  External Trip Reduction \n(predicted by MXD Model) - AM Peak","HBW","HBO","NHB","Total"]
["Internal Capture",{"$f":"B98","v":7.2568664665759123E-3},1.2459664515688494E-2,6.0121043715934651E-3,{"$f":"IFERROR('Trip Generation'!E118/'Trip Generation'!E94,)","v":9.8996380374770671E-3}]
["Walking External",6.1793851630039184E-3,1.2397051785681678E-4,5.9784290648496941E-6,{"$f":"IFERROR('Trip Generation'!E119/('Trip Generation'!E94-'Trip Generation'!E118),)","v":2.8472070729604368E-3}]
["Transit External",2.2424248388868105E-6,1.0173970296375668E-2,1.7596595210214311E-2,{"$f":"IFERROR('Trip Generation'!E120/('Trip Generation'!E94-'Trip Generation'!E118),)","v":5.8503389536668955E-3}]
[]
["%  External Trip Reduction \n(predicted by MXD Model) - PM Peak","HBW","HBO","NHB","Total"]
["Internal Capture",{"$f":"B103","v":7.2568664665759123E-3},1.2459664515688494E-2,6.0121043715934651E-3,{"$f":"IFERROR('Trip Generation'!E123/'Trip Generation'!E95,)","v":9.9796783323423312E-3}]
["Walking External",6.1793851630039184E-3,1.2397051785681678E-4,5.9784290648496941E-6,{"$f":"IFERROR('Trip Generation'!E124/('Trip Generation'!E95-'Trip Generation'!E123),)","v":1.8105014627136683E-3}]
["Transit External",2.2424248388868105E-6,1.0173970296375668E-2,1.7596595210214311E-2,{"$f":"IFERROR('Trip Generation'!E125/('Trip Generation'!E95-'Trip Generation'!E123),)","v":8.487173422345071E-3}]
[]
["# of Trips Reduced (predicted by MXD Model) - Daily","HBW","HBO","NHB","Total"]
["Internal Capture",{"$f":"'Trip Generation'!B93*'Trip Generation'!B98","v":1.9838098221256602E-2},{"$f":"'Trip Generation'!C93*'Trip Generation'!C98","v":0.10772921744431307},{"$f":"'Trip Generation'!D93*'Trip Generation'!D98","v":1.1543614738086724E-2},{"$f":"SUM(B113:D113)","v":0.13911093040365641}]
["Walking External",{"$f":"('Trip Generation'!B93-B113)*'Trip Generation'!B99","v":1.6769999981230022E-2},{"$f":"('Trip Generation'!C93-C113)*'Trip Generation'!C99","v":1.0585232822833439E-3},{"$f":"('Trip Generation'!D93-D113)*'Trip Generation'!D99","v":1.1409943370476792E-5},{"$f":"SUM(B114:D114)","v":1.7839933206883842E-2}]
["Transit External",{"$f":"('Trip Generation'!B93-B113)*'Trip Generation'!B100","v":6.0856320676021432E-6},{"$f":"('Trip Generation'!C93-C113)*'Trip Generation'!C100","v":8.6870528720475459E-2},{"$f":"('Trip Generation'!D93-D113)*'Trip Generation'!D100","v":3.3583430142579813E-2},{"$f":"SUM(B115:D115)","v":0.12046004449512288}]
[]
["# of Trips Reduced (predicted by MXD Model) - AM Peak","HBW","HBO","NHB","Total"]
["Internal Capture",{"$f":"'Trip Generation'!B94*'Trip Generation'!B103","v":3.3249555343137249E-3},{"$f":"'Trip Generation'!C94*'Trip Generation'!C103","v":6.5606280106233032E-3},{"$f":"'Trip Generation'!D94*'Trip Generation'!D103","v":2.1204725328957579E-4},{"$f":"SUM(B118:D118)","v":1.0097630798226603E-2}]
["Walking External",{"$f":"('Trip Generation'!B94-B118)*'Trip Generation'!B104","v":2.8107283080333421E-3},{"$f":"('Trip Generation'!C94-C118)*'Trip Generation'!C104","v":6.4463268743549396E-5},{"$f":"('Trip Generation'!D94-D118)*'Trip Generation'!D104","v":2.0959181389834006E-7},{"$f":"SUM(B119:D119)","v":2.8754011685907899E-3}]
["Transit External",{"$f":"('Trip Generation'!B94-B118)*'Trip Generation'!B105","v":1.019979626942744E-6},{"$f":"('Trip Generation'!C94-C118)*'Trip Generation'!C105","v":5.2903496149112076E-3},{"$f":"('Trip Generation'!D94-D118)*'Trip Generation'!D105","v":6.1690157540346836E-4},{"$f":"SUM(B120:D120)","v":5.9082711699416186E-3}]
[]
["# of Trips Reduced (predicted by MXD Model) - PM Peak","HBW","HBO","NHB","Total"]
["Internal Capture",{"$f":"'Trip Generation'!B95*'Trip Generation'!B108","v":2.5271002261892813E-3},{"$f":"'Trip Generation'!C95*'Trip Generation'!C108","v":8.6696446678463501E-3},{"$f":"'Trip Generation'!D95*'Trip Generation'!D108","v":1.1780562380688572E-3},{"$f":"SUM(B123:D123)","v":1.2374801132104488E-2}]
["Walking External",{"$f":"('Trip Generation'!B95-B123)*'Trip Generation'!B109","v":2.1362668070849075E-3},{"$f":"('Trip Generation'!C95-C123)*'Trip Generation'!C109","v":8.5185996406060923E-5},{"$f":"('Trip Generation'!D95-D123)*'Trip Generation'!D109","v":1.1644147235141036E-6},{"$f":"SUM(B124:D124)","v":2.2226172182144822E-3}]
["Transit External",{"$f":"('Trip Generation'!B95-B123)*'Trip Generation'!B110","v":7.7522562914137892E-7},{"$f":"('Trip Generation'!C95-C123)*'Trip Generation'!C110","v":6.991015380797428E-3},{"$f":"('Trip Generation'!D95-D123)*'Trip Generation'!D110","v":3.4272773540061125E-3},{"$f":"SUM(B125:D125)","v":1.0419067960432682E-2}]
[]
["MXD Model # of Vehicle Trips","HBW","HBO","NHB","Total"]
["Daily",{"$f":"'Trip Generation'!B93-SUM('Trip Generation'!B113:B115)","v":2.697086141592135},{"$f":"'Trip Generation'!C93-SUM('Trip Generation'!C113:C115)","v":8.4505791399684558},{"$f":"'Trip Generation'!D93-SUM('Trip Generation'!D113:D115)","v":1.8749238103337404},{"$f":"SUM(B128:D128)","v":13.022589091894332}]
["AM Peak Hour",{"$f":"'Trip Generation'!B94-SUM('Trip Generation'!B118:B120)","v":0.45204391030782898},{"$f":"'Trip Generation'!C94-SUM('Trip Generation'!C118:C120)","v":0.51463388973677837},{"$f":"'Trip Generation'!D94-SUM('Trip Generation'!D118:D120)","v":3.4440896818632924E-2},{"$f":"SUM(B129:D129)","v":1.0011186968632402}]
["PM Peak Hour",{"$f":"'Trip Generation'!B95-SUM('Trip Generation'!B123:B125)","v":0.34357159252121738},{"$f":"'Trip Generation'!C95-SUM('Trip Generation'!C123:C125)","v":0.68007101619309729},{"$f":"'Trip Generation'!D95-SUM('Trip Generation'!D123:D125)","v":0.19134090497493347},{"$f":"SUM(B130:D130)","v":1.2149835136892482}]
[]
["External Vehicle Trips","Baseline","Adjusted","Reduction %"]
["Daily",{"$f":"Calculations!B61","v":13.299999999999997},{"$f":"SUM('Trip Generation'!B128:D128)","v":13.022589091894332},{"$f":"IFERROR(1-C133/B133,)","v":2.0857963015463499E-2}]
["AM Peak Hour",{"$f":"Calculations!B62","v":1.0199999999999996},{"$f":"SUM('Trip Generation'!B129:D129)","v":1.0011186968632402},{"$f":"IFERROR(1-C134/B134,)","v":1.8511081506626836E-2}]
["PM Peak Hour",{"$f":"Calculations!B63","v":1.2399999999999995},{"$f":"SUM('Trip Generation'!B130:D130)","v":1.2149835136892482},{"$f":"IFERROR(1-C135/B135,)","v":2.0174585734476946E-2}]
[]
["Total Trips Reduced","HBW","HBO","NHB","Total"]
["Daily",{"$f":"SUM('Trip Generation'!B113:B115)","v":3.6614183834554226E-2},{"$f":"SUM('Trip Generation'!C113:C115)","v":0.19565826944707188},{"$f":"SUM('Trip Generation'!D113:D115)","v":4.5138454824037014E-2},{"$f":"SUM(B138:D138)","v":0.2774109081056631}]
["AM Peak Hour",{"$f":"SUM('Trip Generation'!B118:B120)","v":6.1367038219740091E-3},{"$f":"SUM('Trip Generation'!C118:C120)","v":1.1915440894278061E-2},{"$f":"SUM('Trip Generation'!D118:D120)","v":8.291584205069425E-4},{"$f":"SUM(B139:D139)","v":1.8881303136759012E-2}]
["PM Peak Hour",{"$f":"SUM('Trip Generation'!B123:B125)","v":4.6641422589033298E-3},{"$f":"SUM('Trip Generation'!C123:C125)","v":1.574584604504984E-2},{"$f":"SUM('Trip Generation'!D123:D125)","v":4.6064980067984842E-3},{"$f":"SUM(B140:D140)","v":2.5016486310751651E-2}]
[]
[]
["Model Application - Trip Ends Associated With Houses in the Project Only"]
["Baseline # of External Trips (ITE Model)","HBW","HBO","NHB","Total"]
["Daily",{"$f":"Calculations!R26","v":2.7337003254266894},{"$f":"Calculations!S26","v":8.6462374094155283},{"$f":"Calculations!T26","v":1.9200622651577774},{"$f":"SUM(B145:D145)","v":13.299999999999995}]
["AM Peak Hour",{"$f":"Calculations!R27","v":0.45818061412980299},{"$f":"Calculations!S27","v":0.52654933063105647},{"$f":"Calculations!T27","v":3.5270055239139869E-2},{"$f":"SUM(B146:D146)","v":1.0199999999999994}]
["PM Peak Hour",{"$f":"Calculations!R28","v":0.34823573478012071},{"$f":"Calculations!S28","v":0.69581686223814709},{"$f":"Calculations!T28","v":0.19594740298173197},{"$f":"SUM(B147:D147)","v":1.2399999999999998}]
[]
["%  External Trip Reduction \n(predicted by MXD Model) - Daily","HBW","HBO","NHB","Total"]
["Internal Capture",{"$f":"'Trip Generation'!B98","v":7.2568664665759123E-3},{"$f":"'Trip Generation'!C98","v":1.2459664515688494E-2},{"$f":"'Trip Generation'!D98","v":6.0121043715934651E-3},{"$f":"IFERROR(E165/E145,0)","v":1.0459468451402741E-2}]
["Walking External",{"$f":"'Trip Generation'!B99","v":6.1793851630039184E-3},{"$f":"'Trip Generation'!C99","v":1.2397051785681678E-4},{"$f":"'Trip Generation'!D99","v":5.9784290648496941E-6},{"$f":"IFERROR(E166/(E145-E165),0)","v":1.3555264475328501E-3}]
["Transit External",{"$f":"'Trip Generation'!B100","v":2.2424248388868105E-6},{"$f":"'Trip Generation'!C100","v":1.0173970296375668E-2},{"$f":"'Trip Generation'!D100","v":1.7596595210214311E-2},{"$f":"IFERROR(E167/(E145-E165),0)","v":9.1528804671261871E-3}]
[]
["%  External Trip Reduction \n(predicted by MXD Model) - AM Peak","HBW","HBO","NHB","Total"]
["Internal Capture",{"$f":"'Trip Generation'!B103","v":7.2568664665759123E-3},{"$f":"'Trip Generation'!C103","v":1.2459664515688494E-2},{"$f":"'Trip Generation'!D103","v":6.0121043715934651E-3},{"$f":"IFERROR(E170/E146,0)","v":9.8996380374770671E-3}]
["Walking External",{"$f":"'Trip Generation'!B104","v":6.1793851630039184E-3},{"$f":"'Trip Generation'!C104","v":1.2397051785681678E-4},{"$f":"'Trip Generation'!D104","v":5.9784290648496941E-6},{"$f":"IFERROR(E171/(E146-E170),0)","v":2.8472070729604368E-3}]
["Transit External",{"$f":"'Trip Generation'!B105","v":2.2424248388868105E-6},{"$f":"'Trip Generation'!C105","v":1.0173970296375668E-2},{"$f":"'Trip Generation'!D105","v":1.7596595210214311E-2},{"$f":"IFERROR(E172/(E146-E170),0)","v":5.8503389536668955E-3}]
[]
["%  External Trip Reduction \n(predicted by MXD Model) - PM Peak","HBW","HBO","NHB","Total"]
["Internal Capture",{"$f":"'Trip Generation'!B108","v":7.2568664665759123E-3},{"$f":"'Trip Generation'!C108","v":1.2459664515688494E-2},{"$f":"'Trip Generation'!D108","v":6.0121043715934651E-3},{"$f":"IFERROR(E175/E147,0)","v":9.9796783323423312E-3}]
["Walking External",{"$f":"'Trip Generation'!B109","v":6.1793851630039184E-3},{"$f":"'Trip Generation'!C109","v":1.2397051785681678E-4},{"$f":"'Trip Generation'!D109","v":5.9784290648496941E-6},{"$f":"IFERROR(E176/(E147-E175),0)","v":1.8105014627136683E-3}]
["Transit External",{"$f":"'Trip Generation'!B110","v":2.2424248388868105E-6},{"$f":"'Trip Generation'!C110","v":1.0173970296375668E-2},{"$f":"'Trip Generation'!D110","v":1.7596595210214311E-2},{"$f":"IFERROR(E177/(E147-E175),0)","v":8.487173422345071E-3}]
[]
["# of Trips Reduced (predicted by MXD Model) - Daily","HBW","HBO","NHB","Total"]
["Internal Capture",{"$f":"B145*B150","v":1.9838098221256602E-2},{"$f":"C145*C150","v":0.10772921744431307},{"$f":"D145*D150","v":1.1543614738086724E-2},{"$f":"SUM(B165:D165)","v":0.13911093040365641}]
["Walking External",{"$f":"(B145-B165)*B151","v":1.6769999981230022E-2},{"$f":"(C145-C165)*C151","v":1.0585232822833439E-3},{"$f":"(D145-D165)*D151","v":1.1409943370476792E-5},{"$f":"SUM(B166:D166)","v":1.7839933206883842E-2}]
["Transit External",{"$f":"(B145-B165)*B152","v":6.0856320676021432E-6},{"$f":"(C145-C165)*C152","v":8.6870528720475459E-2},{"$f":"(D145-D165)*D152","v":3.3583430142579813E-2},{"$f":"SUM(B167:D167)","v":0.12046004449512288}]
[]
["# of Trips Reduced (predicted by MXD Model) - AM Peak","HBW","HBO","NHB","Total"]
["Internal Capture",{"$f":"B146*B155","v":3.3249555343137249E-3},{"$f":"C146*C155","v":6.5606280106233032E-3},{"$f":"D146*D155","v":2.1204725328957579E-4},{"$f":"SUM(B170:D170)","v":1.0097630798226603E-2}]
["Walking External",{"$f":"(B146-B170)*B156","v":2.8107283080333421E-3},{"$f":"(C146-C170)*C156","v":6.4463268743549396E-5},{"$f":"(D146-D170)*D156","v":2.0959181389834006E-7},{"$f":"SUM(B171:D171)","v":2.8754011685907899E-3}]
["Transit External",{"$f":"(B146-B170)*B157","v":1.019979626942744E-6},{"$f":"(C146-C170)*C157","v":5.2903496149112076E-3},{"$f":"(D146-D170)*D157","v":6.1690157540346836E-4},{"$f":"SUM(B172:D172)","v":5.9082711699416186E-3}]
[]
["# of Trips Reduced (predicted by MXD Model) -  PM Peak","HBW","HBO","NHB","Total"]
["Internal Capture",{"$f":"B147*B160","v":2.5271002261892813E-3},{"$f":"C147*C160","v":8.6696446678463501E-3},{"$f":"D147*D160","v":1.1780562380688572E-3},{"$f":"SUM(B175:D175)","v":1.2374801132104488E-2}]
["Walking External",{"$f":"(B147-B175)*B161","v":2.1362668070849075E-3},{"$f":"(C147-C175)*C161","v":8.5185996406060923E-5},{"$f":"(D147-D175)*D161","v":1.1644147235141036E-6},{"$f":"SUM(B176:D176)","v":2.2226172182144822E-3}]
["Transit External",{"$f":"(B147-B175)*B162","v":7.7522562914137892E-7},{"$f":"(C147-C175)*C162","v":6.991015380797428E-3},{"$f":"(D147-D175)*D162","v":3.4272773540061125E-3},{"$f":"SUM(B177:D177)","v":1.0419067960432682E-2}]
[]
["Adjusted # (MXD Model) of Vehicle Trips generated by Project Residences","HBW","HBO","NHB","Total"]
["Daily",{"$f":"B145-SUM(B165:B167)","v":2.697086141592135},{"$f":"C145-SUM(C165:C167)","v":8.4505791399684558},{"$f":"D145-SUM(D165:D167)","v":1.8749238103337404},{"$f":"SUM(B180:D180)","v":13.022589091894332}]
["AM Peak Hour",{"$f":"B146-SUM(B170:B172)","v":0.45204391030782898},{"$f":"C146-SUM(C170:C172)","v":0.51463388973677837},{"$f":"D146-SUM(D170:D172)","v":3.4440896818632924E-2},{"$f":"SUM(B181:D181)","v":1.0011186968632402}]
["PM Peak Hour",{"$f":"B147-SUM(B175:B177)","v":0.34357159252121738},{"$f":"C147-SUM(C175:C177)","v":0.68007101619309729},{"$f":"D147-SUM(D175:D177)","v":0.19134090497493347},{"$f":"SUM(B182:D182)","v":1.2149835136892482}]
[]
[]
["External Vehicle Trips","Baseline","Adjusted","Reduction %"]
["Daily",{"$f":"Calculations!B26","v":13.299999999999997},{"$f":"SUM(B180:D180)","v":13.022589091894332},{"$f":"IFERROR(1-C186/B186,0)","v":2.0857963015463499E-2}]
["AM Peak Hour",{"$f":"Calculations!B27","v":1.0199999999999996},{"$f":"SUM(B181:D181)","v":1.0011186968632402},{"$f":"IFERROR(1-C187/B187,0)","v":1.8511081506626836E-2}]
["PM Peak Hour",{"$f":"Calculations!B28","v":1.2399999999999995},{"$f":"SUM(B182:D182)","v":1.2149835136892482},{"$f":"IFERROR(1-C188/B188,0)","v":2.0174585734476946E-2}]
[]
[]
[]
["VMT "]
["Daily VMT Reduced","HBW","HBO","NHB","Total"]
["ITE Daily VMT",{"$f":"'Trip Generation'!$B$93*'Trip Generation'!$B$88","v":13.039750552285307},{"$f":"'Trip Generation'!$C$93*'Trip Generation'!$C$88","v":19.972808415749871},{"$f":"'Trip Generation'!$D$93*'Trip Generation'!$D$88","v":4.6849519269849766},{"$f":"SUM(B194:D194)","v":37.697510895020159}]
["MXD Daily Adjusted VMT ",{"$f":"'Trip Generation'!$B$128*'Trip Generation'!$B$88","v":12.865100895394482},{"$f":"'Trip Generation'!$C$128*'Trip Generation'!$C$88","v":19.520837813327134},{"$f":"'Trip Generation'!$D$128*'Trip Generation'!$D$88","v":4.5748140972143263},{"$f":"SUM(B195:D195)","v":36.960752805935947}]
["MXD Reduction in Daily VMT \n(VMT Reduction from Trip Capture)",null,null,null,{"$f":"E194-E195","v":0.73675808908421203}]
["as a percentage",null,null,null,{"$f":"E196/E194","v":1.954394525240492E-2}]
[]
["Trip Capture VMT Reduction","HBW","HBO","NHB","Total"]
["VMT Reduction from Trip Capture",{"$f":"'Trip Generation'!$B$138*'Trip Generation'!$B$88","v":0.17464965689082365},{"$f":"'Trip Generation'!$C$138*'Trip Generation'!$C$88","v":0.45197060242273607},{"$f":"'Trip Generation'!$D$138*'Trip Generation'!$D$88","v":0.11013782977065031},{"$f":"SUM(B200:D200)","v":0.73675808908421003}]
["VMT Reduction from Shorter Trips\nin TAZ relative to region",{"$f":"('Trip Generation'!$B$87-'Trip Generation'!$B$88)*'Trip Generation'!$B$128","v":12.865100895394482},{"$f":"('Trip Generation'!$C$87-'Trip Generation'!$C$88)*'Trip Generation'!$C$128","v":19.520837813327134},{"$f":"('Trip Generation'!$D$87-'Trip Generation'!$D$88)*'Trip Generation'!$D$128","v":4.5748140972143263},{"$f":"SUM(B201:D201)","v":36.960752805935947}]
["Total Daily VMT Avoided",null,null,null,{"$f":"SUM(E200:E201)","v":37.697510895020159}]
[]
["Daily ITE VMT by Land Use Type","HBW","HBO","NHB","Total"]
["Residential",{"$f":"Calculations!R26*TG_TAZ_HBW","v":13.039750552285307},{"$f":"Calculations!S26*TG_TAZ_HBO","v":19.972808415749871},{"$f":"Calculations!T26*TG_TAZ_NHB","v":4.6849519269849766},{"$f":"SUM(B205:D205)","v":37.697510895020159}]
["Retail",{"$f":"Calculations!R33*TG_TAZ_HBW","v":0},{"$f":"Calculations!S33*TG_TAZ_HBO","v":0},{"$f":"Calculations!T33*TG_TAZ_NHB","v":0},{"$f":"SUM(B206:D206)","v":0}]
["Office/Public",{"$f":"Calculations!R40*TG_TAZ_HBW","v":0},{"$f":"Calculations!S40*TG_TAZ_HBO","v":0},{"$f":"Calculations!T40*TG_TAZ_NHB","v":0},{"$f":"SUM(B207:D207)","v":0}]
["Education",{"$f":"Calculations!R54*TG_TAZ_HBW","v":0},{"$f":"Calculations!S54*TG_TAZ_HBO","v":0},{"$f":"Calculations!T54*TG_TAZ_NHB","v":0},{"$f":"SUM(B208:D208)","v":0}]
["Other",{"$f":"Calculations!R47*TG_TAZ_HBW","v":0},{"$f":"Calculations!S47*TG_TAZ_HBO","v":0},{"$f":"Calculations!T47*TG_TAZ_NHB","v":0},{"$f":"SUM(B209:D209)","v":0}]
[]
["Daily ITE VMT by Land Use Type","HBW","HBO","NHB","Total"]
["Residential",{"$f":"B205*(B$195/B$194)","v":12.865100895394482},19.520837813327134,4.5748140972143263,{"$f":"SUM(B212:D212)","v":36.960752805935947}]
["Retail",0,0,0,{"$f":"SUM(B213:D213)","v":0}]
["Office/Public",0,0,0,{"$f":"SUM(B214:D214)","v":0}]
["Education",0,0,0,{"$f":"SUM(B215:D215)","v":0}]
["Other",0,0,0,{"$f":"SUM(B216:D216)","v":0}]

{"sheet":"Gap Financing Options","index":16,"n_rows":129,"n_cols":10,"rows_kept":129,"cut":false,"hidden":true,"merged":[[72,9,73,9],[66,8,66,9],[119,0,119,7],[50,0,50,7],[12,0,12,7],[34,0,34,7],[65,0,65,7],[85,0,85,7],[95,0,95,7],[27,0,27,7]]}
["Financial Stats","Residential (Owner)","Residential (Rental)","Hotel/Motel","Retail","Office","Industrial","Mixed-Use"]
["Rental (Residential and Commercial)","%","%","%","%","%","%","%"]
["Cash-on-Cash (After Year 3)",null,{"$f":"'Residential Rental'!M5","v":0},{"$f":"Hotel!M5","v":0},{"$f":"Retail!M5","v":0},{"$f":"Office!M5","v":0},{"$f":"Industrial!M5","v":0},{"$f":"'Mixed-Use Summary'!P5","v":0}]
["IRR on Project Cost (Unleveraged Return)",null,{"$f":"'Residential Rental'!M6","v":0},{"$f":"Hotel!M6","v":0},{"$f":"Retail!M6","v":0},{"$f":"Office!M6","v":0},{"$f":"Industrial!M6","v":0},{"$f":"'Mixed-Use Summary'!P6","v":0}]
["IRR on Investor Equity (Leveraged Return Before Tax)",null,{"$f":"'Residential Rental'!M7","v":0},{"$f":"Hotel!M7","v":0},{"$f":"Retail!M7","v":0},{"$f":"Office!M7","v":0},{"$f":"Industrial!M7","v":0},{"$f":"'Mixed-Use Summary'!P7","v":0}]
["Debt Service Coverage Ratio (Year 3)",null,{"$f":"'Residential Rental'!M8","v":0},{"$f":"Hotel!M8","v":0},{"$f":"Retail!M8","v":0},{"$f":"Office!M8","v":0},{"$f":"Industrial!M8","v":0},{"$f":"'Mixed-Use Summary'!P8","v":0}]
["IRR on Public Participation",null,{"$f":"'Residential Rental'!M9","v":0},{"$f":"Hotel!M9","v":0},{"$f":"Retail!M9","v":0},{"$f":"Office!M9","v":0},{"$f":"Industrial!M9","v":0},{"$f":"'Mixed-Use Summary'!P9","v":0}]
["Owner Residential","%","%","%","%","%","%","%"]
["Project Rate of Return",{"$f":"'Residential Owner'!D3","v":0.19735438905370878},null,null,null,null,null,{"$f":"'Mixed-Use Summary'!V5","v":0.19735438905370878}]
["Return to Equity",{"$f":"'Residential Owner'!D4","v":0.98677194526854406},null,null,null,null,null,{"$f":"'Mixed-Use Summary'!V6","v":0.98677194526854406}]
[]
["Leveraging Tools"]
["Cash Flow Support - Property Tax Abatements"]
["Property Tax Abatements","Residential (Owner)","Residential (Rental)","Hotel/Motel","Retail","Office","Industrial","Commercial Parking"]
["Local property tax rate available for abatement",null,0,0,0,0,0,0]
["Total Property Tax Abatement",null,{"$f":"SUM('Residential Rental'!E123:N123)","v":0},{"$f":"SUM(Hotel!E125:N125)","v":0},{"$f":"SUM(Retail!E125:N125)","v":0},{"$f":"SUM(Office!E122:N122)","v":0},{"$f":"SUM(Industrial!E122:N122)","v":0},{"$f":"SUM('Commercial Parking'!E125:N125)","v":0}]
["Year 1",null,0,0,0,0,0,0]
["Year 2",null,0,0,0,0,0,0]
["Year 3",null,0,0,0,0,0,0]
["Year 4",null,0,0,0,0,0,0]
["Year 5",null,0,0,0,0,0,0]
["Year 6",null,0,0,0,0,0,0]
["Year 7",null,0,0,0,0,0,0]
["Year 8",null,0,0,0,0,0,0]
["Year 9",null,0,0,0,0,0,0]
["Year 10",null,0,0,0,0,0,0]
[]
["Cash Flow Support - Vertical Housing Tax Exemptions (Oregon)"]
["Tax Exemption Qualified Project? (Y/N)","n"]
["Equalized Floor",5]
["Percent Improvement Exemption",0.8]
["Low-Income Allocation of Equalized Floors"]
["Percent Low-Income Land Exemption",0]
[]
["Cash Flow Support - Sales Tax Abatements"]
["Sales Tax Abatements",null,null,"Hotel/Motel","Retail","Office","Industrial","Commercial Parking"]
["Local sales tax rate available for abatement",null,null,0,0,0,0,0]
["Total Sales Tax Abatements",null,null,{"$f":"SUM(Hotel!E126:N126)","v":0},{"$f":"SUM(Retail!E126:N126)","v":0},{"$f":"SUM(Office!E123:N123)","v":0},{"$f":"SUM(Industrial!E123:N123)","v":0},{"$f":"SUM('Commercial Parking'!E126:N126)","v":0}]
["Year 1",null,null,0,0,0,0,0]
["Year 2",null,null,0,0,0,0,0]
["Year 3",null,null,0,0,0,0,0]
["Year 4",null,null,0,0,0,0,0]
["Year 5",null,null,0,0,0,0,0]
["Year 6",null,null,0,0,0,0,0]
["Year 7",null,null,0,0,0,0,0]
["Year 8",null,null,0,0,0,0,0]
["Year 9",null,null,0,0,0,0,0]
["Year 10",null,null,0,0,0,0,0]
[]
[]
["Cash Flow Support - TIF or IRA Payments"]
["Cash Flow Support",null,"Residential (Rental)","Hotel/Motel","Retail","Office","Industrial","Commercial Parking"]
["Total Cash Flow Support",null,{"$f":"SUM('Residential Rental'!E126:N126)","v":0},{"$f":"SUM(Hotel!E127:N127)","v":0},{"$f":"SUM(Retail!E127:N127)","v":0},{"$f":"SUM(Office!E124:N124)","v":0},{"$f":"SUM(Industrial!E124:N124)","v":0},{"$f":"SUM('Commercial Parking'!E127:N127)","v":0}]
["Year 1",null,0,0,0,0,0,0]
["Year 2",null,0,0,0,0,0,0]
["Year 3",null,0,0,0,0,0,0]
["Year 4",null,0,0,0,0,0,0]
["Year 5",null,0,0,0,0,0,0]
["Year 6",null,0,0,0,0,0,0]
["Year 7",null,0,0,0,0,0,0]
["Year 8",null,0,0,0,0,0,0]
["Year 9",null,0,0,0,0,0,0]
["Year 10",null,0,0,0,0,0,0]
[]
[]
["Loan Support"]
["Loan Terms",null,"Residential (Rental)","Hotel/Motel","Retail","Office","Industrial","Commercial Parking","Total"]
["Public Leveraging Loan Included in Analysis? (1=Yes; 0=No)",0,{"$f":"IF('Basic Financial'!$B$34=0,$B$68,0)","v":0},{"$f":"IF('Basic Financial'!$B$34=0,$B$68,0)","v":0},{"$f":"IF('Basic Financial'!$B$34=0,$B$68,0)","v":0},{"$f":"IF('Basic Financial'!$B$34=0,$B$68,0)","v":0},{"$f":"IF('Basic Financial'!$B$34=0,$B$68,0)","v":0},{"$f":"IF('Basic Financial'!$B$34=0,$B$68,0)","v":0}]
["Maximum LTV",null,0.3,0.3,0.3,0.3,0.3,0.3]
["Interest rate",null,0.03,0.03,0.03,0.03,0.03,0.03]
["Amortization period - years",null,15,15,15,15,15,15]
["Loan $ Amount Required to Meet Loan Terms ◊",null,{"$f":"C69*'Mixed-Use Summary'!B56","v":0},{"$f":"D69*'Mixed-Use Summary'!E56","v":0},{"$f":"E69*'Mixed-Use Summary'!D56","v":0},{"$f":"F69*'Mixed-Use Summary'!C56","v":0},{"$f":"G69*'Mixed-Use Summary'!F56","v":0},{"$f":"H69*'Mixed-Use Summary'!G56","v":0},{"$f":"SUM(C72:H72)","v":0}]
["Baseline Loan Support (based on LTV)",null,{"$f":"IF('Physical Inputs'!$B$42=\"Renter\",'Mixed-Use Summary'!B65,0)","v":0},{"$f":"'Mixed-Use Summary'!E65","v":0},{"$f":"'Mixed-Use Summary'!D65","v":0},{"$f":"'Mixed-Use Summary'!C65","v":0},{"$f":"'Mixed-Use Summary'!F65","v":0},{"$f":"'Mixed-Use Summary'!G65","v":0},{"$f":"SUM(C73:G73)","v":0},{"$f":"SUM(I73:I74)","v":0}]
["Extra Loan Support (if options selected below exceed LTV amount required)",null,{"$f":"IF('Physical Inputs'!$B$42=\"Renter\",((B79-I73)*'Development Costs'!F41),0)","v":0},{"$f":"((B79-I73)*'Development Costs'!F47)","v":0},{"$f":"((B79-I73)*'Development Costs'!F42)","v":0},{"$f":"((B79-I73)*SUM('Development Costs'!F43,'Development Costs'!F45:F46))","v":0},{"$f":"((B79-I73)*'Development Costs'!F44)","v":0},{"$f":"((B79-I73)*'Development Costs'!F48)","v":0},{"$f":"SUM(C74:H74)","v":0}]
["Capital recovery (from grants)"]
["Annual cash throw off"]
["Share of net sales price"]
["Loan Support Options","Total Detailed","User Overide"]
["Total Loan Support",{"$f":"IF(AND(B68=1,C79=0,SUM(B80:B83)=0),I72,IF(C79>0,C79,SUM(B80:B83)))","v":0},0]
["Private Activity Bonds (PAB)"]
["Revolving Loan Funds (RLF)"]
["Low-Interest Loans (LIL)"]
["State Infrastructure Banks (SIB)"]
[]
[]
["Fee Waivers / Reductions"]
["Fee Waivers","Residential (Owner)","Residential (Rental)","Hotel/Motel","Retail","Office","Industrial","Commercial Parking"]
["Fee Waivers / Reductions Distribution",{"$f":"IF('Physical Inputs'!$B$42=\"Owner\",'Gap Financing Options'!$B$90*'Development Costs'!$F$41,0)","v":0},{"$f":"IF('Physical Inputs'!$B$42=\"Renter\",'Gap Financing Options'!$B$90*'Development Costs'!$F$41,0)","v":0},{"$f":"B90*'Development Costs'!$F$47","v":0},{"$f":"$B90*'Development Costs'!$F$42","v":0},{"$f":"B90*IFERROR(SUM('Development Costs'!F43,'Development Costs'!F45:F46),0)","v":0},{"$f":"B90*'Development Costs'!$F$44","v":0},{"$f":"$B90*'Development Costs'!$F$48","v":0}]
["User Inputs","Total Detailed","User Overide"]
["Fee Waivers Total",{"$f":"IF(C90>0.01,C90,SUM(B91:B93))","v":0},0]
["Fee Waivers (FW)"]
["Utility Fee Reductions (UFR)"]
["Impact Fee Reductions (IFR)"]
[]
[]
["Grants"]
["Grants","Residential (Owner)","Residential (Rental)","Hotel/Motel","Retail","Office","Industrial","Commercial Parking"]
["Grant Distribution",{"$f":"IF('Physical Inputs'!$B$42=\"Owner\",'Gap Financing Options'!$B$100*'Development Costs'!$F$41,0)","v":0},{"$f":"IF('Physical Inputs'!$B$42=\"Renter\",'Gap Financing Options'!$B$100*'Development Costs'!$F$41,0)","v":0},{"$f":"B100*'Development Costs'!$F$47","v":0},{"$f":"$B100*'Development Costs'!$F$42","v":0},{"$f":"B100*IFERROR(SUM('Development Costs'!F43,'Development Costs'!F45:F46),0)","v":0},{"$f":"B100*'Development Costs'!$F$44","v":0},{"$f":"$B100*'Development Costs'!$F$48","v":0}]
["User Inputs","Total Detailed","User Overide"]
["Grants Total",{"$f":"IF(C100>0.01,C100,SUM(B101:B117))","v":0},0]
["CDBG"]
["CMAQ"]
["STP"]
["EDA"]
["LID"]
["Business Improvement Districts (BID)"]
["Revenue Bonds (RB)"]
["Parking Districts (PD)"]
["General Obligation Bonds (GOB)"]
["TIF"]
["GARVEE"]
["COPs"]
["TIFIA"]
["RRIF"]
["Urbanized Area Formula (UAF) Program"]
["Foundation Grants (FG)"]
["Other"]
[]
[]
["Tax Credits"]
["Tax Credits","Residential (Owner)","Residential (Rental)","Hotel/Motel","Retail","Office","Industrial","Commercial Parking"]
["Tax Credits net to project Distribution",{"$f":"IF(SUM(B124:H124)=0,IF('Physical Inputs'!$B$42=\"Owner\",'Gap Financing Options'!B126*B123,0),IF('Physical Inputs'!$B$42=\"Owner\",'Gap Financing Options'!B126*B124,0))","v":0},{"$f":"IF(SUM(B124:H124)=0,IF('Physical Inputs'!$B$42=\"Renter\",'Gap Financing Options'!B126*C123,0),IF('Physical Inputs'!$B$42=\"Renter\",'Gap Financing Options'!B126*C124,0))","v":0},{"$f":"IF(SUM(B124:H124)=0,B126*D123,B126*D124)","v":0},{"$f":"IF(SUM(B124:H124)=0,$B126*E123,B126*E124)","v":0},{"$f":"IF(SUM(B124:H124)=0,B126*F123,B126*F124)","v":0},{"$f":"IF(SUM(B124:H124)=0,B126*G123,B126*G124)","v":0},{"$f":"IF(SUM(B124:H124)=0,$B126*H123,B126*H124)","v":0}]
["Development Costs by Land Use (%) ◊",{"$f":"IF('Physical Inputs'!$B$42=\"Owner\",'Development Costs'!$F$41,0)","v":1},{"$f":"IF('Physical Inputs'!$B$42=\"Renter\",'Development Costs'!$F$41,0)","v":0},{"$f":"'Development Costs'!$F$47","v":0},{"$f":"'Development Costs'!$F$42","v":0},{"$f":"'Development Costs'!$F$43","v":0},{"$f":"'Development Costs'!$F$44","v":0},{"$f":"'Development Costs'!$F$48","v":0}]
["Tax Credit Allocation (%) Overide - User Defined ◊"]
["User Inputs","Total Detailed","User Overide"]
["Tax Credits Total",{"$f":"IF(C126>0.01,C126,SUM(B127:B129))","v":0}]
["Low/Moderate Income Housing Tax Credits (L/MIHTC)"]
["New Market Tax Credits (NMTC)"]
["Historic Preservation Tax Credits (HPTC)"]

{"sheet":"Gap Financing Definitions","index":17,"n_rows":132,"n_cols":2,"rows_kept":132,"cut":false,"hidden":true,"merged":[[0,0,0,1]]}
["PUBLIC LEVERAGING TOOLS"]
[]
["Cash Flow Support -- Improves annual project cash flow"]
[]
["Property Tax Abatement (PTA)"]
[null,"Many local communities may eliminate or reduce real and personal property taxes over a scheduled period of time as an incentive to new and expanding businesses. Usually, property tax abatement allows a property owner to phase in payment of property taxes over a designated period. Depending on state enabling legislation, this period may be any number of years between one and 20 or longer with abatements usually ranging from 100 percent down to 10 percent for any given year. Sometimes property tax abatement is used to offset capital investments made by the investor (see Tax Increment Finance and Infrastructure Reimbursement Agreements)."]
[null,"Application – Reduced property tax assessments over the applicable years."]
[]
["Sales Tax Abatement (STA)"]
[null,"Some states allow local communities to eliminate or reduce sales taxes over a scheduled period of time as an incentive to new and expanding businesses. Usually, sales tax abatement allows a retail operation to phase in payment of sales taxes over a designated period. Depending on state enabling legislation, this period may be any number of years between one and usually no more than 10 but it could be longer, with abatements usually ranging from 100 percent down to 10 percent for any given year. Sometimes sales tax abatement is used to offset capital investments made by the investor (see Tax Increment Finance and Infrastructure Reimbursement Agreements)."]
[null,"Application – Reduced sales tax assessments over the applicable years."]
[]
["Tax Increment Financing (TIF)"]
[null,"TIF uses future gains in taxes to finance improvements which in theory create the very value recaptured for this purpose – it is a form of value recapture. When a development or public project is carried out, there is often an increase in the value of surrounding real estate and perhaps new investment such as new or rehabilitated buildings. This increased site value and investment sometimes generates increased tax revenues. The increased tax revenues are the \"tax increment.\" Tax Increment Financing dedicates tax increments within a certain defined district to finance debt issued to pay for the project. TIF is designed to channel funding toward improvements in distressed or underdeveloped areas where development might not otherwise occur. TIF creates funding for \"public\" projects that may otherwise be unaffordable to localities, by borrowing against future property tax revenues. TIF can also be applied to increased sales taxes generated by new development. TIF revenues may be used to retire bonds issued to finance qualifying public purpose investments, or used to reimburse the investor directly from property and/or sales taxes (see Infrastructure Reimbursement Agreements)."]
[null,"Application – Where TIF bonds are used, the tool is considered a grant. Where property and/or sales tax abatement is used, abatement would be the application."]
[]
["Infrastructure Reimbursement Agreements (IRA)"]
[null,"Sometimes local government cannot finance facility improvements needed to attract investment. In these situations, the investor may be willing to finance the improvements provided the investor is reimbursed through property and/or sales tax abatements. Another alternative is to have local government assess subsequent new development a proportionate share of its cost of facility improvements though a “late-comer” fee."]
[null,"Application – Reduced property and/or sales tax assessments over the applicable years."]
[]
["Fee Waivers -- Effect is to buy down total project cost"]
[]
["Fee Waivers (FW)"]
[null,"Local governments assess a wide range of fees to process new development. Collectively, they can account for up to 5 percent or more of the total construction costs. Waiver of fees, or their payment through such alternatives as CDBG funds, can reduce the cost."]
[null,"Application – Grant for qualifying capital improvements."]
[]
["Utility Fee Reductions (UFR)"]
[null,"Many local governments charge connection fees to link new development to water and sewer services. They can account for up to 5 percent or more of the total construction costs. Some local governments reduce or waive these fees for economic development, redevelopment, affordable housing, or other public policy purpose."]
[null,"Application – Grant for qualifying capital improvements."]
[]
["Impact Fee Reductions (IFR)"]
[null,"Many local governments charge impact fees so that the impacts of new development on public facilities can be mitigated. They can account for up to 5 percent or more of the total construction costs. Normally impact fees must be paid to assure legal defensibility but they may be paid from such alternatives as CDBG funds, local housing or economic development funds, or paid over time through a loan arrangement."]
[null,"Application – Fee waiver/reduction."]
[]
["Grants -- Proceeds used to buy down land and/or building costs"]
[]
["Community Development Block Grants (CDBG)"]
[null,"The Community Development Block Grant (CDBG) program is one of the longest-running programs of the U.S. Department of Housing and Urban Development. It funds local community development activities such as affordable housing, anti-poverty programs, and infrastructure development. CDBG are subject to less federal oversight and are largely used at the discretion of the state and local governments and their sub grantees."]
[null,"Application – Grant for qualifying capital improvements."]
[]
["Congestion Mitigation and Air Quality Improvement (CMAQ) Funds"]
[null,"The CMAQ program was created under the Intermodal Surface Transportation Efficiency Act (ISTEA) of 1991, continued under the Transportation Equity Act for the 21st Century (TEA-21), and reauthorized by the Safe, Accountable, Flexible, Efficient Transportation Equity Act: A Legacy for Users (SAFETEA-LU). The purpose of the CMAQ program is to fund transportation projects or programs that will contribute to attainment or maintenance of the national ambient air quality standards (NAAQS) for ozone, carbon monoxide (CO), and particulate matter (PM). CMAQ funds may be used to establish new or expanded transportation projects or programs that reduce emissions, including capital investments in transportation infrastructure, congestion relief efforts, diesel engine retrofits, or other capital projects."]
[null,"Application – Grant for qualifying capital improvements."]
[]
["Surface Transportation Program (STP)"]
[null,"The STP provides flexible funding that may be used by States and localities for projects on any Federal-aid highway, including the NHS, bridge projects on any public road, transit capital projects, and intracity and intercity bus terminals and facilities. A portion of funds reserved for rural areas may be spent on rural minor collectors. http://www.fhwa.dot.gov/tea21/factsheets/stp.htm"]
[null,"Application – Grant for qualifying capital improvements."]
[]
["Economic Development Administration (EDA) Grants"]
[null,"The EDA is an agency in the U.S. Department of Commerce that provides grants to economically distressed communities to generate new employment, help retain existing jobs and stimulate industrial and commercial growth."]
[null,"Application – Grant for qualifying capital improvements."]
[]
["Local Improvement District; Community Improvement District; Special Assessment District; Benefit Assessment District; Related (LID)"]
[null,"These are mechanisms for property owners with common concerns to band together and assess themselves for purely local improvements such as sidewalk repair, neighborhood park rehabilitation, streets, and so forth. They must be authorized by state law and follow specific state procedures for formation, governance, and the issuance of bonds to finance the projects. They are funded through such sources as general taxes, special assessments, or fees based on formulas (such as street front-foot). Although property owners pay the benefits to new investment could be considered a grant. (See also Business Improvement Districts.)"]
[null,"Application – Grant for qualifying capital improvements."]
[]
["Business Improvement Districts (BID)"]
[null,"A business improvement district (BID) is a defined area within which businesses pay an additional tax or fee in order to fund improvements within the district's boundaries. Grant funds acquired by the city for special programs and/or incentives such as tax abatements can be made available to assist businesses or to recruit new business. BIDs may go by other names, such as business improvement area (BIA), business revitalization zone (BRZ), community improvement district (CID), special services area (SSA), or special improvement district (SID). BIDs provide services, such as cleaning streets, providing security, making capital improvements, construction of pedestrian and streetscape enhancements, and marketing the area. The services provided by BIDs are supplemental to those already provided by the municipality. BIDs may generate revenue used to underwrite investments in new development."]
[null,"Application – Grant for qualifying capital improvements."]
[]
["Revenue Bonds (RB)"]
[null,"A revenue bond is a special type of municipal bond distinguished by its guarantee of repayment solely from revenues generated by a specified revenue-generating entity associated with the purpose of the bonds, rather than from a tax. Unlike general obligation bonds, only the revenues specified in the legal contract between the bond holder and bond issuer are required to be used for repayment of the principal and interest of the bonds; other revenues (notably tax revenues) and the general credit of the issuing agency are not so encumbered. Because the pledge of security is not as great as that of general obligation bonds, revenue bonds may carry a slightly higher interest rate than G.O. bonds; however, they are usually considered the second-most secure type of municipal bonds."]
[null,"Application – Grant for qualifying capital improvements."]
[]
["Parking Districts (PD)"]
[null,"These are a variant of the Local Improvement District but focusing on providing parking usually for downtowns and suburban centers. A Revenue Bond is used finance the capital construction while parking fees retire the debt and help with maintenance. Sometimes a BID will underwrite the revenue bond and use parking revenues for O&M. Parking districts can shift the cost of providing expensive decked or underground parking from an investment project to a larger pool of properties."]
[null,"Application – Grant for qualifying capital improvements, usually the parking structures costs otherwise incurred by new investment."]
[]
["General Obligation Bonds (GOB)"]
[null,"A general obligation bond is a common type of municipal bond in the nation that is secured by a state or local government's pledge to use legally available resources, including tax revenues, to repay bond holders. Most general obligation pledges at the local government level include a pledge to levy a property tax to meet debt service requirements, in which case holders of general obligation bonds have a right to compel the borrowing government to levy that tax to satisfy the local government's obligation. Because property owners are usually reluctant to risk losing their holding due to unpaid property tax bills, credit rating agencies often consider a general obligation pledge to have very strong credit quality and frequently assign them investment grade ratings. If local property owners do not pay their property taxes on time in any given year, a government entity is required to increase its property tax rate by as much as is legally allowable in a following year to make up for any delinquencies. In the interim between the taxpayer delinquency and the higher property tax rate in the following year, the general obligation pledge requires the local government to pay debt service coming due with its available resources. GO Bonds can be used for a wide range of purposes that benefit investment property."]
[null,"Application – Grant for qualifying capital improvements."]
[]
["Tax Increment Financing (TIF)"]
[null,"TIF uses future gains in taxes to finance improvements which in theory create the very value recaptured for this purpose – it is a form of value recapture. When a development or public project is carried out, there is often an increase in the value of surrounding real estate and perhaps new investment such as new or rehabilitated buildings. This increased site value and investment sometimes generates increased tax revenues. The increased tax revenues are the \"tax increment.\" Tax Increment Financing dedicates tax increments within a certain defined district to finance debt issued to pay for the project. TIF is designed to channel funding toward improvements in distressed or underdeveloped areas where development might not otherwise occur. TIF creates funding for \"public\" projects that may otherwise be unaffordable to localities, by borrowing against future property tax revenues. TIF can also be applied to increased sales taxes generated by new development. TIF revenues may be used to retire bonds issued to finance qualifying public purpose investments, or used to reimburse the investor directly from property and/or sales taxes (see Infrastructure Reimbursement Agreements)."]
[null,"Application – Where TIF bonds are used, the tool is considered a grant. Where property and/or sales tax abatement is used, abatement would be the application."]
[]
["Grant Anticipation Revenue (GARVEE) Bonds"]
[null,"Grant Anticipation Revenue Vehicle, or GARVEE, is a type of bond issued by a state or state infrastructure bank under federal guidelines. States must repay the bonds using federal funds expected to be received in the future. Federal guidelines state \"an eligible debt financing instrument is a bond, note, certificate, mortgage, lease, or other debt financing instrument issued by a State or political subdivision of a State or a public authority, the proceeds of which are used to fund a project eligible for assistance under Title 23.” GARVEE bonds may be used for major projects receiving federal funding. They do not guarantee that the federal government will provide the expected financing, and they are not guaranteed by the federal government. Eligible costs for projects may include interest, retirement of principal, costs for issuing bonds, and other incidental costs which must be approved. "]
[null,"Application – Grant for qualifying capital improvements."]
[]
["Lease Revenue Bonds/Certificates of Participation (COPs)"]
[null,"Lease-revenue bonds are a variant of revenue bonds.  The revenue stream backing the bond is created from lease payments made by the occupying department to the governmental financing entity which constructs the facility.  The financing authority constructs the facility, issues financing bonds, and retains title to the facility until the debt is retired.  Lease-revenue bonds do not require voter approval because the transaction is set up to mirror a typical financing lease, i.e., lease payments are due on a year-to-year basis and required only if the facility can be occupied.  "]
[null,"A further variant are Certificates of Participation (COPs) in which an investor buys a share in the improvements or infrastructure the government entity intends to fund. This contrasts with a bond, in which the investor loans the government or municipality money in order to make these improvements. This is used primarily when the government or municipality has a charter-mandated debt ceiling. "]
[null,"Application – Where the tool generates revenue to finance improvements, they may be considered a form of long-term financing. Where they generate funds to build a facility for a public purpose and the tenant such as a government entity retires the debt through lease payments, they may be considered a grant for construction but rent revenue pledged to the lease must be reduced from cash flow available to the investor."]
[]
["Transportation Infrastructure Finance and Innovation Act (TIFIA)"]
[null,"The TIFIA program provides Federal credit assistance to nationally or regionally significant surface transportation projects, including highway, transit and rail. The program is designed to fill market gaps and leverage substantial private co-investment by providing projects with supplemental or subordinate debt."]
[null,"Application – Grant for qualifying capital improvements."]
[]
["Railroad Rehabilitation & Improvement Financing (RRIF) Program"]
[null,"The RRIF program was established by the Transportation Equity Act for the 21st Century (TEA-21) and amended by the Safe Accountable, Flexible and Efficient Transportation Equity Act: a Legacy for Users (SAFETEA-LU). The RRIF Program provides direct federal loans and loan guarantees to finance development of railroad infrastructure."]
[null,"Application – Grant for qualifying capital improvements."]
[]
["Urbanized Area Formula (UAF) Program"]
[null,"The UAF makes Federal resources available to urbanized areas and to Governors for transit capital and operating assistance in urbanized areas and for transportation related planning. Activities include planning, engineering design and evaluation of transit projects and other technical transportation-related studies."]
[null,"Application – Grant for qualifying capital improvements."]
[]
["Foundation Grants (FG)"]
[null,"Foundations, especially those whose purpose is to advance the well being of local communities, may be interested in providing grants or lower interest loans. "]
[null,"Application – Grant for qualifying capital improvements and or debt service usually with below-market interest."]
[]
["Loan Support -- Effect is to reduce equity requirements and if below-market rates also reduce debt service obligations"]
[]
["Private Activity Bonds (PAB)"]
[null,"This is a form of a tax-exempt municipal bond in which a local government entity is seeking to raise money for a private company. A municipality issues a private activity bond when it wishes to attract a business and the jobs it brings to the area, especially when the business may be otherwise unable to obtain financing for the project. The municipality issuing the bond must be able to prove that a public benefit derives from the private activity bond in order to qualify for tax-exempt status. Private activity bonds generally are not guaranteed by the revenue of the municipality."]
[null,"Application – Debt service usually with below-market interest."]
[]
["Revolving Loan Funds (RLF)"]
[null,"A Revolving Loan Funds (RLF) is a source of money from which loans are made for multiple business development projects. The fund gets its name from the revolving aspect of loan repayment, where the central fund is replenished as individual projects pay back their loans, creating the opportunity to issue other loans to new projects. "]
[null,"Application – Debt service usually with below-market interest."]
[]
["Low-Interest Loans (LIL)"]
[null,"Local governments may have access to funds that can be used to provide below-market loans for all or part of an investment. If it is just for part, it is often used for “mezzanine” financing."]
[null,"Application – Debt service usually with below-market interest."]
[]
["State Infrastructure Banks (SIB)"]
[null,"The SIB program gives states the capacity to increase the efficiency of their transportation investment and significantly leverage Federal resources by attracting non-Federal public and private investment. A SIB, much like a private bank, can offer a range of loans and credit assistance enhancement products to public and private sponsors of Title 23 highway construction projects or Title 49 transit capital projects. By offering SIB support for a project, the sponsor may be able to attract private, local, and additional state financial resources, leveraging a small amount of SIB assistance into a larger dollar investment. Alternatively, SIB capital can be used as collateral to borrow in the bond market or to establish a guaranteed reserve fund. (May not be available in all areas)"]
[null,"Application – establish infrastructure revolving funds eligible to be capitalized with Federal transportation funds "]
[]
["Tax Credits -- Net proceeds used to buy down construction costs"]
[]
["Low/Moderate Income Housing Tax Credits (L/MIHTC)"]
[null,"The federal Low/Moderate Income Housing Tax Credit (LIHTC - often pronounced \"lie-tech\" or MIHTC – “my-tech” housing credit) program is a dollar-for-dollar tax credit in the for affordable housing investments. It was created under the Tax Reform Act of 1986 (TRA86) that gives incentives for the utilization of private equity in the development of affordable housing aimed at low- or moderate-income households. L/MIHTC accounts for the majority - approximately 90 percent - of all affordable rental housing created in the United States today. The credits are also commonly called Section 42 credits in reference to the applicable section of the Internal Revenue Service. The tax credits are more attractive than tax deductions as they provide a dollar-for-dollar reduction in a taxpayer's federal income tax, whereas a tax deduction only provides a reduction in taxable income. The \"passive loss rules\" and similar tax changes made by TRA86 greatly reduced the value of tax credits and deductions to individual taxpayers. As a result, almost all investors in L/MIHTC projects are corporations."]
[null,"Application – The tax credit is considered a grant against a share of the construction cost of the project for each year in which the credit is applicable, up to 10 years. The credit is 9-percent per year for qualifying low-income housing for a total of 90 percent over 10 years, and 4-percent per year for qualifying moderate income housing for a total of 40 percent also over 10 years. The credits apply only to individually qualifying units, and may include a mix of low-income (9-percent/year credit), moderate-income (4-percent/year credit), and market rate (no credit) units."]
[]
["New Market Tax Credits (NMTC)"]
[null,"The New Markets Tax Credit (NMTC) Program was established in 2000 as part of the Community Renewal Tax Relief Act of 2000. The goal of the program is to induce revitalization efforts of low-income and impoverished communities. The NMTC Program provides tax credit incentives to investors for equity investments in certified Community Development Entities, which invest in low-income communities. The credit equals 39-percent of the investment paid out as 5-percent in each of the first three years and then 6-percent in the final four years (actually six years and plus one day of the seventh year) . A Community Development Entity must have a primary mission of investing in low-income communities and persons. "]
[null,"Application – Grant for qualifying capital improvements."]
[]
["Historic Preservation Tax Credits (HPTC)"]
[null,"An owner of rental/income-producing property listed by the National Park Service’s Register of National Historic Places (or properties that are contributing resources within a National Register Historic District) may be eligible for a 20 percent investment tax credit for the rehabilitation of the historic structure. The rehabilitation may include commercial, industrial, or residential rental property. In addition, the tax incentive program allows for a 10 percent tax credit for rehabilitation of non-historic, nonresidential buildings built before 1936."]
[null,"Application – Grant for qualifying capital improvements."]

{"sheet":"Hotel","index":18,"n_rows":535,"n_cols":30,"rows_kept":535,"cut":false,"hidden":true,"merged":[]}
["ROI Template - Accommodation"]
[]
["Leveraging Tools",null,null,"Summary","User override ","TOTAL",null,"Investment Targets and Performance"]
["Tax Credits net to project",null,null,{"$f":"'Gap Financing Options'!D122","v":0},0,{"$f":"IF('Basic Financial'!$B$34=0,D4,0)","v":0},null,"Performance Indicator",null,null,null,"Target","Actual","NPV"]
["Fee Reductions",null,null,{"$f":"'Gap Financing Options'!D88","v":0},0,{"$f":"IF('Basic Financial'!$B$34=0,D5,0)","v":0},null,"Cash-on-Cash After Year 3",null,null,null,{"$f":"'Advanced Financial'!D67","v":0.1},{"$f":"G135","v":0}]
["Grants",null,null,{"$f":"'Gap Financing Options'!D98","v":0},0,{"$f":"IF('Basic Financial'!$B$34=0,D6,('Basic Financial'!$B$34*'Development Costs'!F47))","v":0},null,"IRR on Project Cost (Unleveraged Return)",null,null,null,{"$f":"'Advanced Financial'!D68","v":0.1},{"$f":"N149","v":0},{"$f":"N150","v":0},{"$f":"IF(N149=0, \"Check NPV for target\",\"\")","v":"Check NPV for target"}]
["Total Development Offsets (Contributions to Equity)",null,null,null,null,{"$f":"SUM(F4:F6)","v":0},null,"IRR on Investor Equity (Leveraged Return Before Tax)",null,null,null,{"$f":"'Advanced Financial'!D69","v":0.25},{"$f":"N157","v":0},{"$f":"N158","v":0},{"$f":"IF(N157=0, \"Check NPV for target\",\"\")","v":"Check NPV for target"}]
["Net Development Costs",null,null,null,null,{"$f":"(C58-F7)","v":0},null,"Debt Service Coverage Ratio (Year 3)",null,null,null,{"$f":"'Advanced Financial'!D70","v":1.25},{"$f":"IFERROR(G130/G131,0)","v":0}]
[null,null,null,null,null,null,null,"IRR on Public Participation",null,null,null,{"$f":"E112","v":0.05},{"$f":"N167","v":0},{"$f":"N168","v":0}]
[]
[]
[]
["Local Property Tax Rate Available for abatement",null,null,{"$f":"'Gap Financing Options'!D15","v":0}]
["Local Sales Tax Rate Available for abatement",null,null,{"$f":"'Gap Financing Options'!D37","v":0}]
[]
["Net Operating Income Analysis"]
["Total Development Costs",null,{"$f":"-'Development Costs'!E47","v":0}]
["Project Feature",null,"Project","Average Daily Rent"]
["Number of units",null,{"$f":"'Physical Outputs'!D35","v":0},{"$f":"'Basic Financial'!B63","v":150}]
["Total project size, square feet",null,{"$f":"'Physical Outputs'!C35","v":0}]
["Other Income",null,{"$f":"'Advanced Financial'!D80","v":0}]
["Less: Vacancy",null,{"$f":"1-'Advanced Financial'!C32","v":0.25}]
["Less: Concessions, Bad Debt",null,{"$f":"'Advanced Financial'!D81","v":0}]
["Less: Operating Costs (%of GPI)",null,{"$f":"'Advanced Financial'!D82","v":0}]
[]
["Initial Project Value Analysis"]
["Property Value (Year 1)"]
["Going in Cap Rate",null,null,{"$f":"'Advanced Financial'!D83","v":0}]
[]
["Debt Financing"]
["Primary Debt"]
["Maximum LTV",null,null,{"$f":"'Advanced Financial'!D91","v":0.7}]
["Rate",null,null,{"$f":"'Advanced Financial'!D92","v":0.06}]
["Amortization Period, Years",null,null,{"$f":"'Advanced Financial'!D93","v":25}]
["Public Leveraging Loan"]
["Maximum LTV",null,null,{"$f":"IF(D43=1,'Gap Financing Options'!D69,0)","v":0}]
["Rate",null,null,{"$f":"IF(D43=1,'Gap Financing Options'!D70,0)","v":0}]
["Amortization Period, Years",null,null,{"$f":"IF(D43=1,'Gap Financing Options'!D71,0)","v":0}]
["Public Participation"]
["Capital Recovery (from grants)",null,null,{"$f":"IF(D43=1,'Gap Financing Options'!D75,0)","v":0}]
["Annual Cash Throw Off",null,null,{"$f":"IF(D43=1,'Gap Financing Options'!D76,0)","v":0}]
["Share of Net Sales Price",null,null,{"$f":"IF(D43=1,'Gap Financing Options'!D77,0)","v":0}]
["Public Leveraging Loan Included in Analysis?(1=Yes; 0=No) ",null,null,{"$f":"'Gap Financing Options'!D68","v":0}]
["Target IRR",null,null,{"$f":"'Advanced Financial'!D71","v":0.05}]
[]
["Operating Statement"]
["GPI",null,"Escalation",{"$f":"'Advanced Financial'!D84","v":0}]
["EGI"]
["Less: Operating Costs",null,"Escalation",{"$f":"'Advanced Financial'!D85","v":0}]
[]
["Project Value",null,null,"Year 1"]
["Terminal Cap Rate, Gross Sales Price",null,null,{"$f":"'Advanced Financial'!D87","v":0}]
["Net Sales = Price Less Sales Cost",null,null,{"$f":"'Advanced Financial'!D88","v":0}]
[]
[]
[]
["Net Operating Income Analysis"]
["Total Development Costs",null,{"$f":"C17","v":0}]
["Development Costs Per Unit",null,{"$f":"IFERROR(C58/C61,0)","v":0}]
["Project Feature",null,"Project","Average Daily Rent","Total Rent @ 365 Days","Occupied Rooms"]
["Number of units",null,{"$f":"C19","v":0},{"$f":"D19","v":150}]
["Total project size, square feet",null,{"$f":"C20","v":0}]
["Gross Potential Rent  (GPI)",null,null,null,{"$f":"D61*C61*365","v":0}]
["Other Income",null,{"$f":"C21","v":0},null,{"$f":"C64*E63","v":0}]
["Total Income",null,null,null,{"$f":"E63+E64","v":0}]
["Less: Vacancy",null,{"$f":"C22","v":0.25},null,{"$f":"E65*C66","v":0},{"$f":"C61*(1-C66)*365","v":0}]
["Less: Concessions, Bad Debt",null,{"$f":"C23","v":0},null,{"$f":"E65*C67","v":0}]
["Effective Gross Income  (EGI)",null,null,null,{"$f":"E65-E66-E67","v":0}]
["Less: Operating Costs (%of GPI)",null,{"$f":"C24","v":0},null,{"$f":"C69*E63","v":0}]
["Net Operating Income",null,null,null,{"$f":"E68-E69","v":0}]
[]
["Initial Project Value Analysis"]
["CAP RATE (Yield to Costs)",null,null,{"$f":"IFERROR(E70/F8,0)","v":0}]
["Debt Service",null,null,{"$f":"IFERROR(-E99,0)","v":0}]
["Cash Flow",null,null,{"$f":"E70-D74","v":0}]
["Return on Equity (Year 1)",null,null,{"$f":"IFERROR(D75/E104,0)","v":0}]
["Property Value (Year 1)"]
["NOI",null,null,{"$f":"E70","v":0}]
["Going in Cap Rate",null,null,{"$f":"D28","v":0}]
["Project Market Value",null,null,{"$f":"IFERROR(D78/D79,0)","v":0}]
["Net Project Value",null,null,{"$f":"D80-C58","v":0}]
[]
["Debt Financing"]
["Primary Debt"]
["Total Value",null,null,null,{"$f":"IF(D80>C58,C58,D80)","v":0}]
["Maximum LTV",null,null,{"$f":"D32","v":0.7},{"$f":"E85*D86","v":0}]
["Imputed Loan Amount",null,null,null,{"$f":"E86","v":0}]
["Rate",null,null,null,{"$f":"D33","v":0.06}]
["Amortization Period, Years",null,null,null,{"$f":"D34","v":25}]
["Annual Debt Service (Amortized)",null,null,null,{"$f":"IFERROR(PMT(E88/12,E89*12,E87)*12,0)","v":0}]
["Public Leveraging Loan"]
["Maximum LTV",null,null,{"$f":"IF(D43=1,D36,0)","v":0},{"$f":"IF(E85*D92>'Development Costs'!F47*'Gap Financing Options'!B79,'Development Costs'!F47*'Gap Financing Options'!B79,E85*D92)","v":0}]
["Imputed Loan Amount",null,null,null,{"$f":"IF(AND(D43=1,'Basic Financial'!B34=0),E92+'Gap Financing Options'!D74,0)","v":0}]
["Rate",null,null,null,{"$f":"IF(D43=1,D37,0)","v":0}]
["Amortization Period, Years",null,null,null,{"$f":"D38","v":0}]
["Annual Debt Service (Amortized)",null,null,null,{"$f":"IFERROR(PMT(E94/12,E95*12,E93)*12,0)","v":0}]
[]
["Total Debt",null,null,null,{"$f":"E87+E93","v":0}]
["Total Debt Service",null,null,null,{"$f":"E90+E96","v":0}]
["Summary"]
["Total Development Costs",null,null,null,{"$f":"C58","v":0}]
["Equity Required",null,null,null,{"$f":"IF(E101-E98<0,1,E101-E98)","v":0}]
["Total Development Offsets (Contributions to Equity)",null,null,null,{"$f":"F7","v":0}]
["Net Equity Required",null,null,null,{"$f":"E102-E103","v":0}]
["Total Project Cost",null,null,null,{"$f":"E101","v":0}]
["Total Project Cost After Development Offsets",null,null,null,{"$f":"E105-E103","v":0}]
["Public Participation"]
["Capital Recovery (from grants)",null,null,null,{"$f":"D40","v":0}]
["Annual Cash Throw Off",null,null,null,{"$f":"D41","v":0}]
["Share of Net Sales Price",null,null,null,{"$f":"D42","v":0}]
["Public Leveraging Loan Included in Analysis? ",null,null,"(1=Yes; 0=No)",{"$f":"D43","v":0}]
["Target IRR",null,null,null,{"$f":"D44","v":0.05}]
[]
[]
[]
["Operating Statement",null,null,null,"Year 1","Year 2","Year 3","Year 4","Year 5","Year 6","Year 7","Year 8","Year 9","Year 10"]
["GPI",null,"Escalation",{"$f":"D47","v":0},{"$f":"E63","v":0},{"$f":"E117*(1+$D$117)","v":0},0,0,0,0,0,0,0,0]
["Other Income",null,null,null,{"$f":"E64","v":0},0,0,0,0,0,0,0,0,0]
["Total Income",null,null,null,{"$f":"E117+E118","v":0},0,0,0,0,0,0,0,0,0]
["Less: Vacancy",null,null,{"$f":"C66","v":0.25},{"$f":"$D$120*E119","v":0},0,0,0,0,0,0,0,0,0]
["Less: Concessions, Market Loss",null,null,{"$f":"C67","v":0},{"$f":"$D$121*E119","v":0},0,0,0,0,0,0,0,0,0]
["EGI",null,null,null,{"$f":"E119-E120-E121","v":0},0,0,0,0,0,0,0,0,0]
["Less: Operating Costs",null,"Escalation",{"$f":"D49","v":0},{"$f":"E69","v":0},{"$f":"E123*(1+$D$123)","v":0},0,0,0,0,0,0,0,0]
["Less: Property Taxes",null,"Millage Rate",{"$f":"'Advanced Financial'!D63","v":0},{"$f":"$F8*$D124*'Advanced Financial'!$D64","v":0},{"$f":"$F8*$D124*'Advanced Financial'!$D64*(1+'Advanced Financial'!D86)","v":0},{"$f":"$F8*$D124*'Advanced Financial'!$D64*(1+'Advanced Financial'!D86)^2","v":0},{"$f":"$F8*$D124*'Advanced Financial'!$D64*(1+'Advanced Financial'!D86)^3","v":0},{"$f":"$F8*$D124*'Advanced Financial'!$D64*(1+'Advanced Financial'!D86)^4","v":0},{"$f":"$F8*$D124*'Advanced Financial'!$D64*(1+'Advanced Financial'!D86)^5","v":0},{"$f":"$F8*$D124*'Advanced Financial'!$D64*(1+'Advanced Financial'!D86)^6","v":0},{"$f":"$F8*$D124*'Advanced Financial'!$D64*(1+'Advanced Financial'!D86)^7","v":0},{"$f":"$F8*$D124*'Advanced Financial'!$D64*(1+'Advanced Financial'!D86)^8","v":0},{"$f":"$F8*$D124*'Advanced Financial'!$D64*(1+'Advanced Financial'!D86)^9","v":0}]
["Plus Property Tax Abatement",null,null,null,{"$f":"IF(OR(BF_Subsidy=0,BF_Subsidy=\"\"),$D$13*'Advanced Financial'!$D64*$F8*'Gap Financing Options'!D17,0)","v":0},{"$f":"IF(OR(BF_Subsidy=0,BF_Subsidy=\"\"),$D$13*'Advanced Financial'!$D64*$F8*(1+$D$117)*'Gap Financing Options'!D18,0)","v":0},{"$f":"IF(OR(BF_Subsidy=0,BF_Subsidy=\"\"),$D$13*'Advanced Financial'!$D64*$F8*(1+$D$117)^2*'Gap Financing Options'!D19,0)","v":0},{"$f":"IF(OR(BF_Subsidy=0,BF_Subsidy=\"\"),$D$13*'Advanced Financial'!$D64*$F8*(1+$D$117)^3*'Gap Financing Options'!D20,0)","v":0},{"$f":"IF(OR(BF_Subsidy=0,BF_Subsidy=\"\"),$D$13*'Advanced Financial'!$D64*$F8*(1+$D$117)^4*'Gap Financing Options'!D21,0)","v":0},{"$f":"IF(OR(BF_Subsidy=0,BF_Subsidy=\"\"),$D$13*'Advanced Financial'!$D64*$F8*(1+$D$117)^5*'Gap Financing Options'!D22,0)","v":0},{"$f":"IF(OR(BF_Subsidy=0,BF_Subsidy=\"\"),$D$13*'Advanced Financial'!$D64*$F8*(1+$D$117)^6*'Gap Financing Options'!D23,0)","v":0},{"$f":"IF(OR(BF_Subsidy=0,BF_Subsidy=\"\"),$D$13*'Advanced Financial'!$D64*$F8*(1+$D$117)^7*'Gap Financing Options'!D24,0)","v":0},{"$f":"IF(OR(BF_Subsidy=0,BF_Subsidy=\"\"),$D$13*'Advanced Financial'!$D64*$F8*(1+$D$117)^8*'Gap Financing Options'!D25,0)","v":0},{"$f":"IF(OR(BF_Subsidy=0,BF_Subsidy=\"\"),$D$13*'Advanced Financial'!$D64*$F8*(1+$D$117)^9*'Gap Financing Options'!D26,0)","v":0}]
["Plus Sales Tax Abatement",null,null,null,{"$f":"IF(OR(BF_Subsidy=0,BF_Subsidy=\"\"),'Gap Financing Options'!D39*$D$14*E119,0)","v":0},{"$f":"IF(OR(BF_Subsidy=0,BF_Subsidy=\"\"),'Gap Financing Options'!D40*$D$14*F119,0)","v":0},{"$f":"IF(OR(BF_Subsidy=0,BF_Subsidy=\"\"),'Gap Financing Options'!D41*$D$14*G119,0)","v":0},{"$f":"IF(OR(BF_Subsidy=0,BF_Subsidy=\"\"),'Gap Financing Options'!D42*$D$14*H119,0)","v":0},{"$f":"IF(OR(BF_Subsidy=0,BF_Subsidy=\"\"),'Gap Financing Options'!D43*$D$14*I119,0)","v":0},{"$f":"IF(OR(BF_Subsidy=0,BF_Subsidy=\"\"),'Gap Financing Options'!D44*$D$14*J119,0)","v":0},{"$f":"IF(OR(BF_Subsidy=0,BF_Subsidy=\"\"),'Gap Financing Options'!D45*$D$14*K119,0)","v":0},{"$f":"IF(OR(BF_Subsidy=0,BF_Subsidy=\"\"),'Gap Financing Options'!D46*$D$14*L119,0)","v":0},{"$f":"IF(OR(BF_Subsidy=0,BF_Subsidy=\"\"),'Gap Financing Options'!D47*$D$14*M119,0)","v":0},{"$f":"IF(OR(BF_Subsidy=0,BF_Subsidy=\"\"),'Gap Financing Options'!D48*$D$14*N119,0)","v":0}]
["Plus TIF + IRA Retainage of Taxes",null,null,null,{"$f":"IF(OR(BF_Subsidy=0,BF_Subsidy=\"\"),'Gap Financing Options'!D54,0)","v":0},{"$f":"IF(OR(BF_Subsidy=0,BF_Subsidy=\"\"),'Gap Financing Options'!D55,0)","v":0},{"$f":"IF(OR(BF_Subsidy=0,BF_Subsidy=\"\"),'Gap Financing Options'!D56,0)","v":0},{"$f":"IF(OR(BF_Subsidy=0,BF_Subsidy=\"\"),'Gap Financing Options'!D57,0)","v":0},{"$f":"IF(OR(BF_Subsidy=0,BF_Subsidy=\"\"),'Gap Financing Options'!D58,0)","v":0},{"$f":"IF(OR(BF_Subsidy=0,BF_Subsidy=\"\"),'Gap Financing Options'!D59,0)","v":0},{"$f":"IF(OR(BF_Subsidy=0,BF_Subsidy=\"\"),'Gap Financing Options'!D60,0)","v":0},{"$f":"IF(OR(BF_Subsidy=0,BF_Subsidy=\"\"),'Gap Financing Options'!D61,0)","v":0},{"$f":"IF(OR(BF_Subsidy=0,BF_Subsidy=\"\"),'Gap Financing Options'!D62,0)","v":0},{"$f":"IF(OR(BF_Subsidy=0,BF_Subsidy=\"\"),'Gap Financing Options'!D63,0)","v":0}]
["Less Cash Throw Off to Public Partner",null,null,null,{"$f":"IF(OR(BF_Subsidy=0,BF_Subsidy=\"\"),-$E$109,0)","v":0},0,0,0,0,0,0,0,0,0]
[]
["NOI",null,null,null,{"$f":"E122-E124-E123+E125+E126+E128+E127","v":0},{"$f":"F122-F124-F123+F125+F126+F128+F127","v":0},0,0,0,0,0,0,0,0]
["Less: Debt Service",null,null,null,{"$f":"-$E$99","v":0},0,0,0,0,0,0,0,0,0]
["Net Cash Flow",null,null,null,{"$f":"E130-E131","v":0},0,0,0,0,0,0,0,0,0]
[]
["Cap Rate",null,null,null,{"$f":"IFERROR(E130/$E$101,0)","v":0},0,0,0,0,0,0,0,0,0]
["Cash on Cash Return (Equity Dividend Rate)",null,null,null,{"$f":"IFERROR(E132/$E$104,0)","v":0},{"$f":"IFERROR(F132/$E$104,0)","v":0},0,0,0,0,0,0,0,0]
[]
["Project Value",null,null,"Year 0","Year 1","Year 2","Year 3","Year 4","Year 5","Year 6","Year 7","Year 8","Year 9","Year 10"]
["Terminal Cap Rate, Gross Sales Price",null,null,null,{"$f":"D52","v":0},null,null,null,null,null,null,null,null,{"$f":"IFERROR(N130/E138,0)","v":0}]
["Net Sales = Price Less Sales Cost",null,null,null,{"$f":"D53","v":0},null,null,null,null,null,null,null,null,{"$f":"N138*(1-E139)","v":0}]
["Less Mortgage Balance",null,null,null,null,null,null,null,null,null,null,null,null,{"$f":"AA184","v":0}]
["Net Sales Proceeds",null,null,null,null,null,null,null,null,null,null,null,null,{"$f":"N139-N140","v":0}]
[]
[]
["IRR - Unleveraged (Project Cost)",null,null,"Year 0","Year 1","Year 2","Year 3","Year 4","Year 5","Year 6","Year 7","Year 8","Year 9","Year 10"]
["Total Investment",null,null,{"$f":"-E106","v":0}]
["Project NOI",null,null,null,{"$f":"E130","v":0},0,0,0,0,0,0,0,0,0]
["Net Sales Price",null,null,null,null,null,null,null,null,null,null,null,null,{"$f":"N139","v":0}]
["Total",null,null,{"$f":"SUM(D145:D147)","v":0},{"$f":"SUM(E145:E147)","v":0},{"$f":"SUM(F145:F147)","v":0},0,0,0,0,0,0,0,0]
["IRR - Project Cost",null,null,null,null,null,null,null,null,null,null,null,null,{"$f":"IFERROR(IRR(D148:N148),0)","v":0}]
["NPV - Project Cost",null,null,null,null,null,null,null,null,null,null,null,null,{"$f":"NPV($L$6,D148:N148)","v":0}]
[]
["IRR - Leveraged (Before Tax)",null,null,"Year 0","Year 1","Year 2","Year 3","Year 4","Year 5","Year 6","Year 7","Year 8","Year 9","Year 10"]
["Original Investment (Equity)",null,null,{"$f":"-E104","v":0}]
["Project Cash Flow",null,null,null,{"$f":"E132","v":0},0,0,0,0,0,0,0,0,0]
["Net Sales Proceeds",null,null,null,null,null,null,null,null,null,null,null,null,{"$f":"N141","v":0}]
["Total",null,null,{"$f":"SUM(D153:D155)","v":0},{"$f":"SUM(E153:E155)","v":0},0,0,0,0,0,0,0,0,0]
["IRR - Equity",null,null,null,null,null,null,null,null,null,null,null,null,{"$f":"IFERROR(IRR(D156:N156),0)","v":0}]
["NPV - Equity",null,null,null,null,null,null,null,null,null,null,null,null,{"$f":"NPV($L$7,D156:N156)","v":0}]
[]
["IRR - Public Participation",null,null,"Year 0","Year 1","Year 2","Year 3","Year 4","Year 5","Year 6","Year 7","Year 8","Year 9","Year 10"]
["Original Investment (Equity)",null,null,{"$f":"-(E108+(E93*E111))","v":0}]
["Mezzanine Financing",null,null,null,{"$f":"-$E$96","v":0},0,0,0,0,0,0,0,0,0]
["Cash Throw Off",null,null,null,{"$f":"$E$109","v":0},0,0,0,0,0,0,0,0,0]
["Sale Proceeds",null,null,null,null,null,null,null,null,null,null,null,null,{"$f":"N155*E110","v":0}]
["Loan Balance",null,null,null,null,null,null,null,null,null,null,null,null,{"$f":"V184*E111","v":0}]
["Total",null,null,{"$f":"SUM(D161:D165)","v":0},{"$f":"SUM(E161:E165)","v":0},0,0,0,0,0,0,0,0,0]
["IRR - Equity",null,null,null,null,null,null,null,null,null,null,null,null,{"$f":"IFERROR(IRR(D166:N166),0)","v":0}]
["NPV - Equity",null,null,null,null,null,null,null,null,null,null,null,null,{"$f":"NPV($E$112,D166:N166)","v":0}]
[]
[]
["DEBT SERVICE MORTIZATION TABLES"]
["Primary Debt Amortization",null,null,null,null,"Low Interest Loan",null,null,null,null,"Total Debt Amortization",null,null,null,null,"Annual Debt Service Summary - Primary Debt",null,null,null,null,"Annual Debt Service Summary - Secondary Debt",null,null,null,null,"Annual Debt Service Summary - Total Debt"]
[]
["Period","Balance","Payment","Interest","Principal","Period","Balance","Payment","Interest","Principal","Period","Balance","Payment","Interest","Principal","Year","Balance","Payment","Interest","Principal","Year","Balance","Payment","Interest","Principal","Year","Balance","Payment","Interest","Principal"]
[0,{"$f":"E87","v":0},null,null,null,0,{"$f":"E93","v":0},null,null,null,0,{"$f":"B175+G175","v":0},null,null,null,1,{"$f":"B187","v":0},{"$f":"SUM(C176:C187)","v":0},{"$f":"SUM(D176:D187)","v":0},{"$f":"SUM(E176:E187)","v":0},1,{"$f":"G187","v":0},{"$f":"SUM(H176:H187)","v":0},{"$f":"SUM(I176:I187)","v":0},{"$f":"SUM(J176:J187)","v":0},1,{"$f":"Q175+V175","v":0},{"$f":"R175+W175","v":0},{"$f":"S175+X175","v":0},{"$f":"T175+Y175","v":0}]
[1,{"$f":"B175-E176","v":0},{"$f":"-$E$90/12","v":0},{"$f":"$E$88/12*B175","v":0},{"$f":"C176-D176","v":0},1,{"$f":"G175-J176","v":0},{"$f":"-$E$96/12","v":0},{"$f":"$E$94/12*G175","v":0},{"$f":"H176-I176","v":0},1,{"$f":"G176+B176","v":0},0,0,0,2,{"$f":"B199","v":0},{"$f":"SUM(C188:C199)","v":0},{"$f":"SUM(D188:D199)","v":0},{"$f":"SUM(E188:E199)","v":0},2,{"$f":"G199","v":0},{"$f":"SUM(H188:H199)","v":0},{"$f":"SUM(I188:I199)","v":0},{"$f":"SUM(J188:J199)","v":0},2,{"$f":"Q176+V176","v":0},{"$f":"R176+W176","v":0},{"$f":"S176+X176","v":0},{"$f":"T176+Y176","v":0}]
[{"$f":"A176+1","v":2},0,0,0,0,{"$f":"F176+1","v":2},0,0,0,0,{"$f":"K176+1","v":2},0,0,0,0,3,{"$f":"B211","v":0},{"$f":"SUM(C200:C211)","v":0},{"$f":"SUM(D200:D211)","v":0},{"$f":"SUM(E200:E211)","v":0},3,{"$f":"G211","v":0},{"$f":"SUM(H200:H211)","v":0},{"$f":"SUM(I200:I211)","v":0},{"$f":"SUM(J200:J211)","v":0},3,0,0,0,0]
[3,0,0,0,0,3,0,0,0,0,3,0,0,0,0,4,{"$f":"B223","v":0},{"$f":"SUM(C212:C223)","v":0},{"$f":"SUM(D212:D223)","v":0},{"$f":"SUM(E212:E223)","v":0},4,{"$f":"G223","v":0},{"$f":"SUM(H212:H223)","v":0},{"$f":"SUM(I212:I223)","v":0},{"$f":"SUM(J212:J223)","v":0},4,0,0,0,0]
[4,0,0,0,0,4,0,0,0,0,4,0,0,0,0,5,{"$f":"B235","v":0},{"$f":"SUM(C224:C235)","v":0},{"$f":"SUM(D224:D235)","v":0},{"$f":"SUM(E224:E235)","v":0},5,{"$f":"G235","v":0},{"$f":"SUM(H224:H235)","v":0},{"$f":"SUM(I224:I235)","v":0},{"$f":"SUM(J224:J235)","v":0},5,0,0,0,0]
[5,0,0,0,0,5,0,0,0,0,5,0,0,0,0,6,{"$f":"B247","v":0},{"$f":"SUM(C236:C247)","v":0},{"$f":"SUM(D236:D247)","v":0},{"$f":"SUM(E236:E247)","v":0},6,{"$f":"G247","v":0},{"$f":"SUM(H236:H247)","v":0},{"$f":"SUM(I236:I247)","v":0},{"$f":"SUM(J236:J247)","v":0},6,0,0,0,0]
[6,0,0,0,0,6,0,0,0,0,6,0,0,0,0,7,{"$f":"B259","v":0},{"$f":"SUM(C248:C259)","v":0},{"$f":"SUM(D248:D259)","v":0},{"$f":"SUM(E248:E259)","v":0},7,{"$f":"G259","v":0},{"$f":"SUM(H248:H259)","v":0},{"$f":"SUM(I248:I259)","v":0},{"$f":"SUM(J248:J259)","v":0},7,0,0,0,0]
[7,0,0,0,0,7,0,0,0,0,7,0,0,0,0,8,{"$f":"B271","v":0},{"$f":"SUM(C260:C271)","v":0},{"$f":"SUM(D260:D271)","v":0},{"$f":"SUM(E260:E271)","v":0},8,{"$f":"G271","v":0},{"$f":"SUM(H260:H271)","v":0},{"$f":"SUM(I260:I271)","v":0},{"$f":"SUM(J260:J271)","v":0},8,0,0,0,0]
[8,0,0,0,0,8,0,0,0,0,8,0,0,0,0,9,{"$f":"B283","v":0},{"$f":"SUM(C272:C283)","v":0},{"$f":"SUM(D272:D283)","v":0},{"$f":"SUM(E272:E283)","v":0},9,{"$f":"G283","v":0},{"$f":"SUM(H272:H283)","v":0},{"$f":"SUM(I272:I283)","v":0},{"$f":"SUM(J272:J283)","v":0},9,0,0,0,0]
[9,0,0,0,0,9,0,0,0,0,9,0,0,0,0,10,{"$f":"B295","v":0},{"$f":"SUM(C284:C295)","v":0},{"$f":"SUM(D284:D295)","v":0},{"$f":"SUM(E284:E295)","v":0},10,{"$f":"G295","v":0},{"$f":"SUM(H284:H295)","v":0},{"$f":"SUM(I284:I295)","v":0},{"$f":"SUM(J284:J295)","v":0},10,{"$f":"Q184+V184","v":0},{"$f":"R184+W184","v":0},{"$f":"S184+X184","v":0},{"$f":"T184+Y184","v":0}]
[10,0,0,0,0,10,0,0,0,0,10,0,0,0,0]
[11,0,0,0,0,11,0,0,0,0,11,0,0,0,0]
[12,0,0,0,0,12,0,0,0,0,12,0,0,0,0]
[13,0,0,0,0,13,0,0,0,0,13,0,0,0,0]
[14,0,0,0,0,14,0,0,0,0,14,0,0,0,0]
[15,0,0,0,0,15,0,0,0,0,15,0,0,0,0]
[16,0,0,0,0,16,0,0,0,0,16,0,0,0,0]
[17,0,0,0,0,17,0,0,0,0,17,0,0,0,0]
[18,0,0,0,0,18,0,0,0,0,18,0,0,0,0]
[19,0,0,0,0,19,0,0,0,0,19,0,0,0,0]
[20,0,0,0,0,20,0,0,0,0,20,0,0,0,0]
[21,0,0,0,0,21,0,0,0,0,21,0,0,0,0]
[22,0,0,0,0,22,0,0,0,0,22,0,0,0,0]
[23,0,0,0,0,23,0,0,0,0,23,0,0,0,0]
[24,0,0,0,0,24,0,0,0,0,24,0,0,0,0]
[25,0,0,0,0,25,0,0,0,0,25,0,0,0,0]
[26,0,0,0,0,26,0,0,0,0,26,0,0,0,0]
[27,0,0,0,0,27,0,0,0,0,27,0,0,0,0]
[28,0,0,0,0,28,0,0,0,0,28,0,0,0,0]
[29,0,0,0,0,29,0,0,0,0,29,0,0,0,0]
[30,0,0,0,0,30,0,0,0,0,30,0,0,0,0]
[31,0,0,0,0,31,0,0,0,0,31,0,0,0,0]
[32,0,0,0,0,32,0,0,0,0,32,0,0,0,0]
[33,0,0,0,0,33,0,0,0,0,33,0,0,0,0]
[34,0,0,0,0,34,0,0,0,0,34,0,0,0,0]
[35,0,0,0,0,35,0,0,0,0,35,0,0,0,0]
[36,0,0,0,0,36,0,0,0,0,36,0,0,0,0]
[37,0,0,0,0,37,0,0,0,0,37,0,0,0,0]
[38,0,0,0,0,38,0,0,0,0,38,0,0,0,0]
[39,0,0,0,0,39,0,0,0,0,39,0,0,0,0]
[40,0,0,0,0,40,0,0,0,0,40,0,0,0,0]
[41,0,0,0,0,41,0,0,0,0,41,0,0,0,0]
[42,0,0,0,0,42,0,0,0,0,42,0,0,0,0]
[43,0,0,0,0,43,0,0,0,0,43,0,0,0,0]
[44,0,0,0,0,44,0,0,0,0,44,0,0,0,0]
[45,0,0,0,0,45,0,0,0,0,45,0,0,0,0]
[46,0,0,0,0,46,0,0,0,0,46,0,0,0,0]
[47,0,0,0,0,47,0,0,0,0,47,0,0,0,0]
[48,0,0,0,0,48,0,0,0,0,48,0,0,0,0]
[49,0,0,0,0,49,0,0,0,0,49,0,0,0,0]
[50,0,0,0,0,50,0,0,0,0,50,0,0,0,0]
[51,0,0,0,0,51,0,0,0,0,51,0,0,0,0]
[52,0,0,0,0,52,0,0,0,0,52,0,0,0,0]
[53,0,0,0,0,53,0,0,0,0,53,0,0,0,0]
[54,0,0,0,0,54,0,0,0,0,54,0,0,0,0]
[55,0,0,0,0,55,0,0,0,0,55,0,0,0,0]
[56,0,0,0,0,56,0,0,0,0,56,0,0,0,0]
[57,0,0,0,0,57,0,0,0,0,57,0,0,0,0]
[58,0,0,0,0,58,0,0,0,0,58,0,0,0,0]
[59,0,0,0,0,59,0,0,0,0,59,0,0,0,0]
[60,0,0,0,0,60,0,0,0,0,60,0,0,0,0]
[61,0,0,0,0,61,0,0,0,0,61,0,0,0,0]
[62,0,0,0,0,62,0,0,0,0,62,0,0,0,0]
[63,0,0,0,0,63,0,0,0,0,63,0,0,0,0]
[64,0,0,0,0,64,0,0,0,0,64,0,0,0,{"$f":"J239+E239","v":0}]
[65,{"$f":"B239-E240","v":0},{"$f":"-$E$90/12","v":0},{"$f":"$E$88/12*B239","v":0},{"$f":"C240-D240","v":0},65,{"$f":"G239-J240","v":0},{"$f":"-$E$96/12","v":0},{"$f":"$E$94/12*G239","v":0},{"$f":"H240-I240","v":0},65,{"$f":"G240+B240","v":0},0,0,0]
[{"$f":"A240+1","v":66},0,0,0,0,{"$f":"F240+1","v":66},0,0,0,0,{"$f":"K240+1","v":66},0,0,0,0]
[67,0,0,0,0,67,0,0,0,0,67,0,0,0,0]
[68,0,0,0,0,68,0,0,0,0,68,0,0,0,0]
[69,0,0,0,0,69,0,0,0,0,69,0,0,0,0]
[70,0,0,0,0,70,0,0,0,0,70,0,0,0,0]
[71,0,0,0,0,71,0,0,0,0,71,0,0,0,0]
[72,0,0,0,0,72,0,0,0,0,72,0,0,0,0]
[73,0,0,0,0,73,0,0,0,0,73,0,0,0,0]
[74,0,0,0,0,74,0,0,0,0,74,0,0,0,0]
[75,0,0,0,0,75,0,0,0,0,75,0,0,0,0]
[76,0,0,0,0,76,0,0,0,0,76,0,0,0,0]
[77,0,0,0,0,77,0,0,0,0,77,0,0,0,0]
[78,0,0,0,0,78,0,0,0,0,78,0,0,0,0]
[79,0,0,0,0,79,0,0,0,0,79,0,0,0,0]
[80,0,0,0,0,80,0,0,0,0,80,0,0,0,0]
[81,0,0,0,0,81,0,0,0,0,81,0,0,0,0]
[82,0,0,0,0,82,0,0,0,0,82,0,0,0,0]
[83,0,0,0,0,83,0,0,0,0,83,0,0,0,0]
[84,0,0,0,0,84,0,0,0,0,84,0,0,0,0]
[85,0,0,0,0,85,0,0,0,0,85,0,0,0,0]
[86,0,0,0,0,86,0,0,0,0,86,0,0,0,0]
[87,0,0,0,0,87,0,0,0,0,87,0,0,0,0]
[88,0,0,0,0,88,0,0,0,0,88,0,0,0,0]
[89,0,0,0,0,89,0,0,0,0,89,0,0,0,0]
[90,0,0,0,0,90,0,0,0,0,90,0,0,0,0]
[91,0,0,0,0,91,0,0,0,0,91,0,0,0,0]
[92,0,0,0,0,92,0,0,0,0,92,0,0,0,0]
[93,0,0,0,0,93,0,0,0,0,93,0,0,0,0]
[94,0,0,0,0,94,0,0,0,0,94,0,0,0,0]
[95,0,0,0,0,95,0,0,0,0,95,0,0,0,0]
[96,0,0,0,0,96,0,0,0,0,96,0,0,0,0]
[97,0,0,0,0,97,0,0,0,0,97,0,0,0,0]
[98,0,0,0,0,98,0,0,0,0,98,0,0,0,0]
[99,0,0,0,0,99,0,0,0,0,99,0,0,0,0]
[100,0,0,0,0,100,0,0,0,0,100,0,0,0,0]
[101,0,0,0,0,101,0,0,0,0,101,0,0,0,0]
[102,0,0,0,0,102,0,0,0,0,102,0,0,0,0]
[103,0,0,0,0,103,0,0,0,0,103,0,0,0,0]
[104,0,0,0,0,104,0,0,0,0,104,0,0,0,0]
[105,0,0,0,0,105,0,0,0,0,105,0,0,0,0]
[106,0,0,0,0,106,0,0,0,0,106,0,0,0,0]
[107,0,0,0,0,107,0,0,0,0,107,0,0,0,0]
[108,0,0,0,0,108,0,0,0,0,108,0,0,0,0]
[109,0,0,0,0,109,0,0,0,0,109,0,0,0,0]
[110,0,0,0,0,110,0,0,0,0,110,0,0,0,0]
[111,0,0,0,0,111,0,0,0,0,111,0,0,0,0]
[112,0,0,0,0,112,0,0,0,0,112,0,0,0,0]
[113,0,0,0,0,113,0,0,0,0,113,0,0,0,0]
[114,0,0,0,0,114,0,0,0,0,114,0,0,0,0]
[115,0,0,0,0,115,0,0,0,0,115,0,0,0,0]
[116,0,0,0,0,116,0,0,0,0,116,0,0,0,0]
[117,0,0,0,0,117,0,0,0,0,117,0,0,0,0]
[118,0,0,0,0,118,0,0,0,0,118,0,0,0,0]
[119,0,0,0,0,119,0,0,0,0,119,0,0,0,0]
[120,0,0,0,0,120,0,0,0,0,120,0,0,0,0]
[121,0,0,0,0,121,0,0,0,0,121,0,0,0,0]
[122,0,0,0,0,122,0,0,0,0,122,0,0,0,0]
[123,0,0,0,0,123,0,0,0,0,123,0,0,0,0]
[124,0,0,0,0,124,0,0,0,0,124,0,0,0,0]
[125,0,0,0,0,125,0,0,0,0,125,0,0,0,0]
[126,0,0,0,0,126,0,0,0,0,126,0,0,0,0]
[127,0,0,0,0,127,0,0,0,0,127,0,0,0,0]
[128,0,0,0,0,128,0,0,0,0,128,0,0,0,0]
[129,{"$f":"B303-E304","v":0},{"$f":"-$E$90/12","v":0},{"$f":"$E$88/12*B303","v":0},{"$f":"C304-D304","v":0},129,{"$f":"G303-J304","v":0},{"$f":"-$E$96/12","v":0},{"$f":"$E$94/12*G303","v":0},{"$f":"H304-I304","v":0},129,{"$f":"G304+B304","v":0},0,0,0]
[{"$f":"A304+1","v":130},0,0,0,0,{"$f":"F304+1","v":130},0,0,0,0,{"$f":"K304+1","v":130},0,0,0,0]
[131,0,0,0,0,131,0,0,0,0,131,0,0,0,0]
[132,0,0,0,0,132,0,0,0,0,132,0,0,0,0]
[133,0,0,0,0,133,0,0,0,0,133,0,0,0,0]
[134,0,0,0,0,134,0,0,0,0,134,0,0,0,0]
[135,0,0,0,0,135,0,0,0,0,135,0,0,0,0]
[136,0,0,0,0,136,0,0,0,0,136,0,0,0,0]
[137,0,0,0,0,137,0,0,0,0,137,0,0,0,0]
[138,0,0,0,0,138,0,0,0,0,138,0,0,0,0]
[139,0,0,0,0,139,0,0,0,0,139,0,0,0,0]
[140,0,0,0,0,140,0,0,0,0,140,0,0,0,0]
[141,0,0,0,0,141,0,0,0,0,141,0,0,0,0]
[142,0,0,0,0,142,0,0,0,0,142,0,0,0,0]
[143,0,0,0,0,143,0,0,0,0,143,0,0,0,0]
[144,0,0,0,0,144,0,0,0,0,144,0,0,0,0]
[145,0,0,0,0,145,0,0,0,0,145,0,0,0,0]
[146,0,0,0,0,146,0,0,0,0,146,0,0,0,0]
[147,0,0,0,0,147,0,0,0,0,147,0,0,0,0]
[148,0,0,0,0,148,0,0,0,0,148,0,0,0,0]
[149,0,0,0,0,149,0,0,0,0,149,0,0,0,0]
[150,0,0,0,0,150,0,0,0,0,150,0,0,0,0]
[151,0,0,0,0,151,0,0,0,0,151,0,0,0,0]
[152,0,0,0,0,152,0,0,0,0,152,0,0,0,0]
[153,0,0,0,0,153,0,0,0,0,153,0,0,0,0]
[154,0,0,0,0,154,0,0,0,0,154,0,0,0,0]
[155,0,0,0,0,155,0,0,0,0,155,0,0,0,0]
[156,0,0,0,0,156,0,0,0,0,156,0,0,0,0]
[157,0,0,0,0,157,0,0,0,0,157,0,0,0,0]
[158,0,0,0,0,158,0,0,0,0,158,0,0,0,0]
[159,0,0,0,0,159,0,0,0,0,159,0,0,0,0]
[160,0,0,0,0,160,0,0,0,0,160,0,0,0,0]
[161,0,0,0,0,161,0,0,0,0,161,0,0,0,0]
[162,0,0,0,0,162,0,0,0,0,162,0,0,0,0]
[163,0,0,0,0,163,0,0,0,0,163,0,0,0,0]
[164,0,0,0,0,164,0,0,0,0,164,0,0,0,0]
[165,0,0,0,0,165,0,0,0,0,165,0,0,0,0]
[166,0,0,0,0,166,0,0,0,0,166,0,0,0,0]
[167,0,0,0,0,167,0,0,0,0,167,0,0,0,0]
[168,0,0,0,0,168,0,0,0,0,168,0,0,0,0]
[169,0,0,0,0,169,0,0,0,0,169,0,0,0,0]
[170,0,0,0,0,170,0,0,0,0,170,0,0,0,0]
[171,0,0,0,0,171,0,0,0,0,171,0,0,0,0]
[172,0,0,0,0,172,0,0,0,0,172,0,0,0,0]
[173,0,0,0,0,173,0,0,0,0,173,0,0,0,0]
[174,0,0,0,0,174,0,0,0,0,174,0,0,0,0]
[175,0,0,0,0,175,0,0,0,0,175,0,0,0,0]
[176,0,0,0,0,176,0,0,0,0,176,0,0,0,0]
[177,0,0,0,0,177,0,0,0,0,177,0,0,0,0]
[178,0,0,0,0,178,0,0,0,0,178,0,0,0,0]
[179,0,0,0,0,179,0,0,0,0,179,0,0,0,0]
[180,0,0,0,0,180,0,0,0,0,180,0,0,0,0]
[181,0,0,0,0,181,0,0,0,0,181,0,0,0,0]
[182,0,0,0,0,182,0,0,0,0,182,0,0,0,0]
[183,0,0,0,0,183,0,0,0,0,183,0,0,0,0]
[184,0,0,0,0,184,0,0,0,0,184,0,0,0,0]
[185,0,0,0,0,185,0,0,0,0,185,0,0,0,0]
[186,0,0,0,0,186,0,0,0,0,186,0,0,0,0]
[187,0,0,0,0,187,0,0,0,0,187,0,0,0,0]
[188,0,0,0,0,188,0,0,0,0,188,0,0,0,0]
[189,0,0,0,0,189,0,0,0,0,189,0,0,0,0]
[190,0,0,0,0,190,0,0,0,0,190,0,0,0,0]
[191,0,0,0,0,191,0,0,0,0,191,0,0,0,0]
[192,0,0,0,0,192,0,0,0,0,192,0,0,0,{"$f":"J367+E367","v":0}]
[193,{"$f":"B367-E368","v":0},{"$f":"-$E$90/12","v":0},{"$f":"$E$88/12*B367","v":0},{"$f":"C368-D368","v":0},193,{"$f":"G367-J368","v":0},{"$f":"-$E$96/12","v":0},{"$f":"$E$94/12*G367","v":0},{"$f":"H368-I368","v":0},193,{"$f":"G368+B368","v":0},0,0,0]
[{"$f":"A368+1","v":194},0,0,0,0,{"$f":"F368+1","v":194},0,0,0,0,{"$f":"K368+1","v":194},0,0,0,0]
[195,0,0,0,0,195,0,0,0,0,195,0,0,0,0]
[196,0,0,0,0,196,0,0,0,0,196,0,0,0,0]
[197,0,0,0,0,197,0,0,0,0,197,0,0,0,0]
[198,0,0,0,0,198,0,0,0,0,198,0,0,0,0]
[199,0,0,0,0,199,0,0,0,0,199,0,0,0,0]
[200,0,0,0,0,200,0,0,0,0,200,0,0,0,0]
[201,0,0,0,0,201,0,0,0,0,201,0,0,0,0]
[202,0,0,0,0,202,0,0,0,0,202,0,0,0,0]
[203,0,0,0,0,203,0,0,0,0,203,0,0,0,0]
[204,0,0,0,0,204,0,0,0,0,204,0,0,0,0]
[205,0,0,0,0,205,0,0,0,0,205,0,0,0,0]
[206,0,0,0,0,206,0,0,0,0,206,0,0,0,0]
[207,0,0,0,0,207,0,0,0,0,207,0,0,0,0]
[208,0,0,0,0,208,0,0,0,0,208,0,0,0,0]
[209,0,0,0,0,209,0,0,0,0,209,0,0,0,0]
[210,0,0,0,0,210,0,0,0,0,210,0,0,0,0]
[211,0,0,0,0,211,0,0,0,0,211,0,0,0,0]
[212,0,0,0,0,212,0,0,0,0,212,0,0,0,0]
[213,0,0,0,0,213,0,0,0,0,213,0,0,0,0]
[214,0,0,0,0,214,0,0,0,0,214,0,0,0,0]
[215,0,0,0,0,215,0,0,0,0,215,0,0,0,0]
[216,0,0,0,0,216,0,0,0,0,216,0,0,0,0]
[217,0,0,0,0,217,0,0,0,0,217,0,0,0,0]
[218,0,0,0,0,218,0,0,0,0,218,0,0,0,0]
[219,0,0,0,0,219,0,0,0,0,219,0,0,0,0]
[220,0,0,0,0,220,0,0,0,0,220,0,0,0,0]
[221,0,0,0,0,221,0,0,0,0,221,0,0,0,0]
[222,0,0,0,0,222,0,0,0,0,222,0,0,0,0]
[223,0,0,0,0,223,0,0,0,0,223,0,0,0,0]
[224,0,0,0,0,224,0,0,0,0,224,0,0,0,0]
[225,0,0,0,0,225,0,0,0,0,225,0,0,0,0]
[226,0,0,0,0,226,0,0,0,0,226,0,0,0,0]
[227,0,0,0,0,227,0,0,0,0,227,0,0,0,0]
[228,0,0,0,0,228,0,0,0,0,228,0,0,0,0]
[229,0,0,0,0,229,0,0,0,0,229,0,0,0,0]
[230,0,0,0,0,230,0,0,0,0,230,0,0,0,0]
[231,0,0,0,0,231,0,0,0,0,231,0,0,0,0]
[232,0,0,0,0,232,0,0,0,0,232,0,0,0,0]
[233,0,0,0,0,233,0,0,0,0,233,0,0,0,0]
[234,0,0,0,0,234,0,0,0,0,234,0,0,0,0]
[235,0,0,0,0,235,0,0,0,0,235,0,0,0,0]
[236,0,0,0,0,236,0,0,0,0,236,0,0,0,0]
[237,0,0,0,0,237,0,0,0,0,237,0,0,0,0]
[238,0,0,0,0,238,0,0,0,0,238,0,0,0,0]
[239,0,0,0,0,239,0,0,0,0,239,0,0,0,0]
[240,0,0,0,0,240,0,0,0,0,240,0,0,0,0]
[241,0,0,0,0,241,0,0,0,0,241,0,0,0,0]
[242,0,0,0,0,242,0,0,0,0,242,0,0,0,0]
[243,0,0,0,0,243,0,0,0,0,243,0,0,0,0]
[244,0,0,0,0,244,0,0,0,0,244,0,0,0,0]
[245,0,0,0,0,245,0,0,0,0,245,0,0,0,0]
[246,0,0,0,0,246,0,0,0,0,246,0,0,0,0]
[247,0,0,0,0,247,0,0,0,0,247,0,0,0,0]
[248,0,0,0,0,248,0,0,0,0,248,0,0,0,0]
[249,0,0,0,0,249,0,0,0,0,249,0,0,0,0]
[250,0,0,0,0,250,0,0,0,0,250,0,0,0,0]
[251,0,0,0,0,251,0,0,0,0,251,0,0,0,0]
[252,0,0,0,0,252,0,0,0,0,252,0,0,0,0]
[253,0,0,0,0,253,0,0,0,0,253,0,0,0,0]
[254,0,0,0,0,254,0,0,0,0,254,0,0,0,0]
[255,0,0,0,0,255,0,0,0,0,255,0,0,0,0]
[256,0,0,0,0,256,0,0,0,0,256,0,0,0,0]
[257,{"$f":"B431-E432","v":0},{"$f":"-$E$90/12","v":0},{"$f":"$E$88/12*B431","v":0},{"$f":"C432-D432","v":0},257,{"$f":"G431-J432","v":0},{"$f":"-$E$96/12","v":0},{"$f":"$E$94/12*G431","v":0},{"$f":"H432-I432","v":0},257,{"$f":"G432+B432","v":0},0,0,0]
[{"$f":"A432+1","v":258},0,0,0,0,{"$f":"F432+1","v":258},0,0,0,0,{"$f":"K432+1","v":258},0,0,0,0]
[259,0,0,0,0,259,0,0,0,0,259,0,0,0,0]
[260,0,0,0,0,260,0,0,0,0,260,0,0,0,0]
[261,0,0,0,0,261,0,0,0,0,261,0,0,0,0]
[262,0,0,0,0,262,0,0,0,0,262,0,0,0,0]
[263,0,0,0,0,263,0,0,0,0,263,0,0,0,0]
[264,0,0,0,0,264,0,0,0,0,264,0,0,0,0]
[265,0,0,0,0,265,0,0,0,0,265,0,0,0,0]
[266,0,0,0,0,266,0,0,0,0,266,0,0,0,0]
[267,0,0,0,0,267,0,0,0,0,267,0,0,0,0]
[268,0,0,0,0,268,0,0,0,0,268,0,0,0,0]
[269,0,0,0,0,269,0,0,0,0,269,0,0,0,0]
[270,0,0,0,0,270,0,0,0,0,270,0,0,0,0]
[271,0,0,0,0,271,0,0,0,0,271,0,0,0,0]
[272,0,0,0,0,272,0,0,0,0,272,0,0,0,0]
[273,0,0,0,0,273,0,0,0,0,273,0,0,0,0]
[274,0,0,0,0,274,0,0,0,0,274,0,0,0,0]
[275,0,0,0,0,275,0,0,0,0,275,0,0,0,0]
[276,0,0,0,0,276,0,0,0,0,276,0,0,0,0]
[277,0,0,0,0,277,0,0,0,0,277,0,0,0,0]
[278,0,0,0,0,278,0,0,0,0,278,0,0,0,0]
[279,0,0,0,0,279,0,0,0,0,279,0,0,0,0]
[280,0,0,0,0,280,0,0,0,0,280,0,0,0,0]
[281,0,0,0,0,281,0,0,0,0,281,0,0,0,0]
[282,0,0,0,0,282,0,0,0,0,282,0,0,0,0]
[283,0,0,0,0,283,0,0,0,0,283,0,0,0,0]
[284,0,0,0,0,284,0,0,0,0,284,0,0,0,0]
[285,0,0,0,0,285,0,0,0,0,285,0,0,0,0]
[286,0,0,0,0,286,0,0,0,0,286,0,0,0,0]
[287,0,0,0,0,287,0,0,0,0,287,0,0,0,0]
[288,0,0,0,0,288,0,0,0,0,288,0,0,0,0]
[289,0,0,0,0,289,0,0,0,0,289,0,0,0,0]
[290,0,0,0,0,290,0,0,0,0,290,0,0,0,0]
[291,0,0,0,0,291,0,0,0,0,291,0,0,0,0]
[292,0,0,0,0,292,0,0,0,0,292,0,0,0,0]
[293,0,0,0,0,293,0,0,0,0,293,0,0,0,0]
[294,0,0,0,0,294,0,0,0,0,294,0,0,0,0]
[295,0,0,0,0,295,0,0,0,0,295,0,0,0,0]
[296,0,0,0,0,296,0,0,0,0,296,0,0,0,0]
[297,0,0,0,0,297,0,0,0,0,297,0,0,0,0]
[298,0,0,0,0,298,0,0,0,0,298,0,0,0,0]
[299,0,0,0,0,299,0,0,0,0,299,0,0,0,0]
[300,0,0,0,0,300,0,0,0,0,300,0,0,0,0]
[301,0,0,0,0,301,0,0,0,0,301,0,0,0,0]
[302,0,0,0,0,302,0,0,0,0,302,0,0,0,0]
[303,0,0,0,0,303,0,0,0,0,303,0,0,0,0]
[304,0,0,0,0,304,0,0,0,0,304,0,0,0,0]
[305,0,0,0,0,305,0,0,0,0,305,0,0,0,0]
[306,0,0,0,0,306,0,0,0,0,306,0,0,0,0]
[307,0,0,0,0,307,0,0,0,0,307,0,0,0,0]
[308,0,0,0,0,308,0,0,0,0,308,0,0,0,0]
[309,0,0,0,0,309,0,0,0,0,309,0,0,0,0]
[310,0,0,0,0,310,0,0,0,0,310,0,0,0,0]
[311,0,0,0,0,311,0,0,0,0,311,0,0,0,0]
[312,0,0,0,0,312,0,0,0,0,312,0,0,0,0]
[313,0,0,0,0,313,0,0,0,0,313,0,0,0,0]
[314,0,0,0,0,314,0,0,0,0,314,0,0,0,0]
[315,0,0,0,0,315,0,0,0,0,315,0,0,0,0]
[316,0,0,0,0,316,0,0,0,0,316,0,0,0,0]
[317,0,0,0,0,317,0,0,0,0,317,0,0,0,0]
[318,0,0,0,0,318,0,0,0,0,318,0,0,0,0]
[319,0,0,0,0,319,0,0,0,0,319,0,0,0,0]
[320,0,0,0,0,320,0,0,0,0,320,0,0,0,{"$f":"J495+E495","v":0}]
[321,{"$f":"B495-E496","v":0},{"$f":"-$E$90/12","v":0},{"$f":"$E$88/12*B495","v":0},{"$f":"C496-D496","v":0},321,{"$f":"G495-J496","v":0},{"$f":"-$E$96/12","v":0},{"$f":"$E$94/12*G495","v":0},{"$f":"H496-I496","v":0},321,{"$f":"G496+B496","v":0},0,0,0]
[{"$f":"A496+1","v":322},0,0,0,0,{"$f":"F496+1","v":322},0,0,0,0,{"$f":"K496+1","v":322},0,0,0,0]
[323,0,0,0,0,323,0,0,0,0,323,0,0,0,0]
[324,0,0,0,0,324,0,0,0,0,324,0,0,0,0]
[325,0,0,0,0,325,0,0,0,0,325,0,0,0,0]
[326,0,0,0,0,326,0,0,0,0,326,0,0,0,0]
[327,0,0,0,0,327,0,0,0,0,327,0,0,0,0]
[328,0,0,0,0,328,0,0,0,0,328,0,0,0,0]
[329,0,0,0,0,329,0,0,0,0,329,0,0,0,0]
[330,0,0,0,0,330,0,0,0,0,330,0,0,0,0]
[331,0,0,0,0,331,0,0,0,0,331,0,0,0,0]
[332,0,0,0,0,332,0,0,0,0,332,0,0,0,0]
[333,0,0,0,0,333,0,0,0,0,333,0,0,0,0]
[334,0,0,0,0,334,0,0,0,0,334,0,0,0,0]
[335,0,0,0,0,335,0,0,0,0,335,0,0,0,0]
[336,0,0,0,0,336,0,0,0,0,336,0,0,0,0]
[337,0,0,0,0,337,0,0,0,0,337,0,0,0,0]
[338,0,0,0,0,338,0,0,0,0,338,0,0,0,0]
[339,0,0,0,0,339,0,0,0,0,339,0,0,0,0]
[340,0,0,0,0,340,0,0,0,0,340,0,0,0,0]
[341,0,0,0,0,341,0,0,0,0,341,0,0,0,0]
[342,0,0,0,0,342,0,0,0,0,342,0,0,0,0]
[343,0,0,0,0,343,0,0,0,0,343,0,0,0,0]
[344,0,0,0,0,344,0,0,0,0,344,0,0,0,0]
[345,0,0,0,0,345,0,0,0,0,345,0,0,0,0]
[346,0,0,0,0,346,0,0,0,0,346,0,0,0,0]
[347,0,0,0,0,347,0,0,0,0,347,0,0,0,0]
[348,0,0,0,0,348,0,0,0,0,348,0,0,0,0]
[349,0,0,0,0,349,0,0,0,0,349,0,0,0,0]
[350,0,0,0,0,350,0,0,0,0,350,0,0,0,0]
[351,0,0,0,0,351,0,0,0,0,351,0,0,0,0]
[352,0,0,0,0,352,0,0,0,0,352,0,0,0,0]
[353,0,0,0,0,353,0,0,0,0,353,0,0,0,0]
[354,0,0,0,0,354,0,0,0,0,354,0,0,0,0]
[355,0,0,0,0,355,0,0,0,0,355,0,0,0,0]
[356,0,0,0,0,356,0,0,0,0,356,0,0,0,0]
[357,0,0,0,0,357,0,0,0,0,357,0,0,0,0]
[358,0,0,0,0,358,0,0,0,0,358,0,0,0,0]
[359,0,0,0,0,359,0,0,0,0,359,0,0,0,0]
[360,0,0,0,0,360,0,0,0,0,360,0,0,0,0]

{"sheet":"Residential Owner","index":19,"n_rows":54,"n_cols":14,"rows_kept":54,"cut":false,"hidden":true,"merged":[[50,0,50,3]]}
["ROI Template - Residential Owner"]
["Investment Targets and Performance","Target","Actual","Leveraging Tools"]
["Project Rate of Return Target",{"$f":"'Advanced Financial'!C74","v":0.2},{"$f":"B25","v":0.19735438905370878},{"$f":"B43","v":0.19735438905370878}]
["Equity Return Target",{"$f":"'Advanced Financial'!C75","v":0.75},{"$f":"B29","v":0.98677194526854406},{"$f":"B48","v":0.98677194526854406}]
[]
["Public Leveraging Tools",null,"TOTAL"]
["     Tax Credits net to project",{"$f":"'Gap Financing Options'!B122","v":0},{"$f":"IF('Basic Financial'!B34=0,B7,0)","v":0}]
["     Fee Reductions",{"$f":"'Gap Financing Options'!B88","v":0},{"$f":"IF('Basic Financial'!B34=0,B8,0)","v":0}]
["     Grants",{"$f":"'Gap Financing Options'!B98","v":0},{"$f":"IF('Physical Inputs'!B42=\"Renter\",0,IF('Basic Financial'!B34=0,B9,'Development Costs'!F41*'Basic Financial'!B34))","v":0}]
["     Total",{"$f":"SUM(B7:B9)","v":0},{"$f":"SUM(C7:C9)","v":0}]
[]
[]
["Project Baseline","Baseline Figures"]
["     Total Project Cost",{"$f":"IF('Physical Inputs'!B42=\"Owner\",-'Development Costs'!E41,0)","v":1228207.7999999998},null,"Additional Interest",{"$f":"IFERROR(-IPMT(0.1/12,Dashboard!D23-Assumptions!B19,360,B15),0)","v":0}]
["     Interim Financing Amount",{"$f":"'Advanced Financial'!B91*B14","v":982566.23999999987},null,"Taxes",{"$f":"'Residential Owner'!B19*'Advanced Financial'!B63*((Dashboard!C23-Assumptions!B19)/12)","v":0}]
["     Developer Equity",{"$f":"B14-B15","v":245641.55999999994},null,"Total",{"$f":"SUM(E14:E15)","v":0},null,null,null,{"$f":"Dashboard!D23-Assumptions!B19","v":-9}]
["     Residential Units",{"$f":"IF('Physical Inputs'!B42=\"Owner\",'Physical Inputs'!B2,0)","v":1.9999999999999993},null,"Adjusted Return",{"$f":"IFERROR((B24-E16)/B23,0)","v":0.19735438905370878}]
["     Average Market Price",{"$f":"'Basic Financial'!D55","v":735300}]
["     Net Sales Proceeds",{"$f":"B17*B18","v":1470599.9999999995}]
["     Net Project Return",{"$f":"B19-B14","v":242392.19999999972}]
[]
["Performance Assessment"]
["     Total Project Cost",{"$f":"B14","v":1228207.7999999998}]
["     Project Return",{"$f":"B19-B23","v":242392.19999999972},null,{"$f":"1.2*B23","v":1473849.3599999996}]
["     Project Profit (Loss) - based on target return",{"$f":"IF(B23=0,0,B24/B23)","v":0.19735438905370878},null,{"$f":"SUM(B23:B24)-D24-E16","v":-3249.3600000001024},"Surplus or gap"]
["     Net Project Return",{"$f":"B24-(B14*B3)","v":-3249.360000000248}]
["     Net Sales Proceeds",{"$f":"B24","v":242392.19999999972}]
["     Equity",{"$f":"B16","v":245641.55999999994}]
["     Return to Equity",{"$f":"IF(B28=0,0,B27/B28)","v":0.98677194526854406}]
["     Project Profit (Loss) - based on target return",{"$f":"B27-(B4*B28)","v":58161.029999999766}]
[]
["Leveraged Performance Analysis"]
["Adjusted Financial Features"]
["     Project Cost",{"$f":"B14","v":1228207.7999999998}]
["     Public Leveraging",{"$f":"IF('Physical Inputs'!B42=\"Renter\",0,IF('Basic Financial'!B34=0,C10,'Basic Financial'!B34*'Development Costs'!F41))","v":0}]
["     Adjusted Project Cost",{"$f":"B34-B35","v":1228207.7999999998}]
["     Interim Financing Amount",{"$f":"B15","v":982566.23999999987}]
["     Developer Equity",{"$f":"IF((B36-B37)<0,1,B36-B37)","v":245641.55999999994}]
["Project Rate of Return"]
["     Adjusted Project Cost",{"$f":"B36","v":1228207.7999999998}]
["     Net Sales Proceeds",{"$f":"B19","v":1470599.9999999995}]
["     Net Project Return",{"$f":"B41-B40","v":242392.19999999972}]
["     Project Rate of Return",{"$f":"IF(B40=0,0,B42/B40)","v":0.19735438905370878}]
["     Project Profit (Loss)",{"$f":"B42-(B40*B3)","v":-3249.360000000248}]
["Equity Rate of Return"]
["     Developer Equity",{"$f":"B38","v":245641.55999999994}]
["     Net Project Return",{"$f":"B42","v":242392.19999999972}]
["     Return to Equity",{"$f":"IFERROR(B47/B46,0)","v":0.98677194526854406}]
["     Equity Profit (Loss)",{"$f":"B47-(B46*B4)","v":58161.029999999766}]
[]
["Property Tax",null,null,null,"Year 1","Year 2","Year 3","Year 4","Year 5","Year 6","Year 7","Year 8","Year 9","Year 10"]
["Project Market Value",null,null,null,{"$f":"B19","v":1470599.9999999995},{"$f":"$E52*(1+'Advanced Financial'!$B$86)","v":1514717.9999999995},{"$f":"$E52*(1+'Advanced Financial'!$B$86)^2","v":1560159.5399999993},{"$f":"$E52*(1+'Advanced Financial'!$B$86)^3","v":1606964.3261999995},{"$f":"$E52*(1+'Advanced Financial'!$B$86)^4","v":1655173.2559859992},{"$f":"$E52*(1+'Advanced Financial'!$B$86)^5","v":1704828.4536655792},{"$f":"$E52*(1+'Advanced Financial'!$B$86)^6","v":1755973.3072755467},{"$f":"$E52*(1+'Advanced Financial'!$B$86)^7","v":1808652.5064938131},{"$f":"$E52*(1+'Advanced Financial'!$B$86)^8","v":1862912.0816886274},{"$f":"$E52*(1+'Advanced Financial'!$B$86)^9","v":1918799.4441392862}]
["Project Assessed Value",null,null,null,{"$f":"B19*'Advanced Financial'!C64","v":1470599.9999999995},{"$f":"$E53*(1+'Advanced Financial'!$B$86)","v":1514717.9999999995},{"$f":"$E53*(1+'Advanced Financial'!$B$86)^2","v":1560159.5399999993},{"$f":"$E53*(1+'Advanced Financial'!$B$86)^3","v":1606964.3261999995},{"$f":"$E53*(1+'Advanced Financial'!$B$86)^4","v":1655173.2559859992},{"$f":"$E53*(1+'Advanced Financial'!$B$86)^5","v":1704828.4536655792},{"$f":"$E53*(1+'Advanced Financial'!$B$86)^6","v":1755973.3072755467},{"$f":"$E53*(1+'Advanced Financial'!$B$86)^7","v":1808652.5064938131},{"$f":"$E53*(1+'Advanced Financial'!$B$86)^8","v":1862912.0816886274},{"$f":"$E53*(1+'Advanced Financial'!$B$86)^9","v":1918799.4441392862}]
["Estimated Property Taxes","Millage Rate",null,{"$f":"'Advanced Financial'!B63","v":0.01},{"$f":"E53*D54","v":14705.999999999996},{"$f":"$E54*(1+'Advanced Financial'!$B$86)","v":15147.179999999997},{"$f":"$E54*(1+'Advanced Financial'!$B$86)^2","v":15601.595399999995},{"$f":"$E54*(1+'Advanced Financial'!$B$86)^3","v":16069.643261999996},{"$f":"$E54*(1+'Advanced Financial'!$B$86)^4","v":16551.732559859996},{"$f":"$E54*(1+'Advanced Financial'!$B$86)^5","v":17048.284536655792},{"$f":"$E54*(1+'Advanced Financial'!$B$86)^6","v":17559.733072755469},{"$f":"$E54*(1+'Advanced Financial'!$B$86)^7","v":18086.525064938134},{"$f":"$E54*(1+'Advanced Financial'!$B$86)^8","v":18629.120816886276},{"$f":"$E54*(1+'Advanced Financial'!$B$86)^9","v":19187.994441392864}]

{"sheet":"Residential Rental","index":20,"n_rows":534,"n_cols":30,"rows_kept":534,"cut":false,"hidden":true,"merged":[]}
["ROI Template - Residential Rental"]
[]
["Leveraging Tools",null,null,"Summary","User override ","TOTAL",null,"Investment Targets and Performance"]
["Tax Credits net to project",null,null,{"$f":"'Gap Financing Options'!C122","v":0},null,{"$f":"IF('Basic Financial'!$B$34=0,D4,0)","v":0},null,"Performance Indicator",null,null,null,"Target","Actual","NPV"]
["Fee Reductions",null,null,{"$f":"'Gap Financing Options'!C88","v":0},null,{"$f":"IF('Basic Financial'!$B$34=0,D5,0)","v":0},null,"Cash-on-Cash After Year 3",null,null,null,{"$f":"'Advanced Financial'!C67","v":0.12},{"$f":"G133","v":0}]
["Grants",null,null,{"$f":"'Gap Financing Options'!C98","v":0},null,{"$f":"IF('Basic Financial'!$B$34=0,D6,IF('Physical Inputs'!B42=\"Renter\",'Basic Financial'!$B$34*'Development Costs'!F41,0))","v":0},null,"IRR on Project Cost (Unleveraged Return)",null,null,null,{"$f":"'Advanced Financial'!C68","v":0.12},{"$f":"N147","v":0},{"$f":"N148","v":0}]
["Total Development Offsets (Contributions to Equity)",null,null,null,null,{"$f":"SUM(F4:F6)","v":0},null,"IRR on Investor Equity (Leveraged Return Before Tax)",null,null,null,{"$f":"'Advanced Financial'!C69","v":0.25},{"$f":"N155","v":0},{"$f":"N156","v":0}]
["Net Development Costs",null,null,null,null,{"$f":"(C57-F7)","v":0},null,"Debt Service Coverage Ratio (Year 3)",null,null,null,{"$f":"'Advanced Financial'!C70","v":1.25},{"$f":"IFERROR(G127/G129,0)","v":0}]
[null,null,null,null,null,null,null,"IRR on Public Participation",null,null,null,{"$f":"E111","v":0.05},{"$f":"N165","v":0},{"$f":"N166","v":0}]
[]
[]
[]
["Local Property Tax Rate Available for abatement",null,null,{"$f":"'Gap Financing Options'!C15","v":0}]
[]
["Net Operating Income Analysis"]
["Total Development Costs",null,null,{"$f":"IF('Physical Inputs'!B42=\"Renter\",-'Development Costs'!E41,0)","v":0}]
["Vertical Costs Only",null,null,{"$f":"IF('Physical Inputs'!B42=\"Renter\",-'Development Costs'!C41,0)","v":0}]
["Project Feature",null,"Project","Rent"]
["Number of units",null,{"$f":"IF('Physical Inputs'!B42=\"Renter\",'Physical Outputs'!D29,0)","v":0}]
["Total project size, square feet",null,{"$f":"IF('Physical Inputs'!B42=\"Renter\",'Physical Outputs'!C29,0)","v":0},{"$f":"IF('Physical Inputs'!B42=\"Renter\",'Basic Financial'!E51,0)","v":0}]
["Other Income (vending, fines)",null,{"$f":"IF('Physical Inputs'!B42=\"Renter\",'Advanced Financial'!C80,0)","v":0}]
["Less: Vacancy",null,{"$f":"IF('Physical Inputs'!B42=\"Renter\",1-'Advanced Financial'!C31,0)","v":0}]
["Less: Concessions, Bad Debt",null,{"$f":"IF('Physical Inputs'!B42=\"Renter\",'Advanced Financial'!C81,0)","v":0}]
["Less: Operating Costs (per unit)",null,{"$f":"IF('Physical Inputs'!B42=\"Renter\",IFERROR((('Advanced Financial'!C82*E62)/'Physical Outputs'!D29),0),0)","v":0}]
[]
["Initial Project Value Analysis"]
["Property Value (Year 1)"]
["Going in Cap Rate",null,null,{"$f":"IF('Physical Inputs'!B42=\"Renter\",'Advanced Financial'!C83,0)","v":0}]
[]
["Debt Financing",null,null,"."]
["Primary Debt"]
["Maximum LTV",null,null,{"$f":"'Advanced Financial'!C91","v":0.8}]
["Rate",null,null,{"$f":"'Advanced Financial'!C92","v":0.06}]
["Amortization Period, Years",null,null,{"$f":"'Advanced Financial'!C93","v":30}]
["Public Leveraging Loan"]
["Maximum LTV",null,null,{"$f":"IF(D43=1,'Gap Financing Options'!C69,0)","v":0}]
["Rate",null,null,{"$f":"IF(D43=1,'Gap Financing Options'!C70,0)","v":0}]
["Amortization Period, Years",null,null,{"$f":"IF(D43=1,'Gap Financing Options'!C71,0)","v":0}]
["Public Participation",null,null,null,null,null," "]
["Capital Recovery (from grants)",null,null,{"$f":"IF(D43=0,0,'Gap Financing Options'!C75)","v":0}]
["Annual Cash Throw Off",null,null,{"$f":"IF(D43=0,0,'Gap Financing Options'!C76)","v":0}]
["Share of Net Sales Price",null,null,{"$f":"IF(D43=0,0,'Gap Financing Options'!C77)","v":0}]
["Public Leveraging Loan Included in Analysis?(1=Yes; 0=No).",null,null,{"$f":"'Gap Financing Options'!C68","v":0}]
["Target IRR",null,null,{"$f":"'Advanced Financial'!C71","v":0.05}]
[]
["Operating Statement"]
["GPI",null,"Escalation",{"$f":"'Advanced Financial'!C84","v":0.03}]
["EGI",null,null,null,null,null,null,null,null,null,null,null,null,null,"  "]
["Less: Operating Costs",null,"Escalation",{"$f":"'Advanced Financial'!C85","v":0.03}]
[]
["Project Value",null,null,"Year 1"]
["Terminal Cap Rate, Gross Sales Price",null,null,{"$f":"'Advanced Financial'!C87","v":4.4999999999999998E-2}]
["Net Sales = Price Less Sales Cost",null,null,{"$f":"'Advanced Financial'!C88","v":0.05}]
[]
[]
["Net Operating Income Analysis",null,"Project"]
["Total Development Costs",null,{"$f":"D16","v":0}]
["Development Costs Per Unit",null,{"$f":"IFERROR(C57/C60,0)","v":0}]
["Project Feature",null,"Project","Rent","Total Rent","Rent PSF"]
["Number of units",null,{"$f":"C19","v":0}]
["Total project size, square feet",null,{"$f":"C20","v":0},{"$f":"D20","v":0},{"$f":"C60*D61","v":0},{"$f":"IFERROR(E61/C61,0)","v":0}]
["Gross Potential Rent  (GPI)",null,null,null,{"$f":"E61*12","v":0}]
["Other Income (vending, fines)",null,{"$f":"C21","v":0},null,{"$f":"C63*E62","v":0}]
["Total Income",null,null,null,{"$f":"E62+E63","v":0}]
["Less: Vacancy",null,{"$f":"C22","v":0},null,{"$f":"E64*C65","v":0}]
["Less: Concessions, Bad Debt",null,{"$f":"C23","v":0},null,{"$f":"E64*C66","v":0}]
["Effective Gross Income  (EGI)",null,null,null,{"$f":"E64-E65-E66","v":0}]
["Less: Operating Costs (per unit)",null,{"$f":"C24","v":0},null,{"$f":"C68*C60","v":0}]
["Net Operating Income",null,null,null,{"$f":"E67-E68","v":0}]
[]
["Initial Project Value Analysis"]
["CAP RATE (Yield to Costs)",null,{"$f":"IFERROR(E69/F8,0)","v":0}]
["Debt Service",null,{"$f":"IFERROR(-E98,0)","v":0}]
["Cash Flow",null,{"$f":"E69-C73","v":0}]
["Return on Equity (Year 1)",null,{"$f":"IFERROR(C74/E103,0)","v":0}]
["Property Value (Year 1)"]
["NOI",null,{"$f":"E69","v":0}]
["Going in Cap Rate",null,{"$f":"D28","v":0}]
["Project Market Value",null,{"$f":"IFERROR(C77/C78,0)","v":0}]
["Net Project Value",null,{"$f":"C79-C57","v":0}]
[]
["Debt Financing"]
["Primary Debt"]
["Total Value",null,null,null,{"$f":"D16","v":0}]
["Maximum LTV",null,null,{"$f":"D32","v":0.8},{"$f":"E84*D85","v":0}]
["Imputed Loan Amount",null,null,null,{"$f":"E85","v":0}]
["Rate",null,null,null,{"$f":"D33","v":0.06}]
["Amortization Period, Years",null,null,null,{"$f":"D34","v":30}]
["Annual Debt Service (Amortized)",null,null,null,{"$f":"IFERROR(PMT(E87/12,E88*12,E86)*12,0)","v":0},null,null," "," "]
["Public Leveraging Loan"]
["Maximum LTV",null,null,{"$f":"IF(D43=1,D36,0)","v":0},{"$f":"IF(AND('Physical Inputs'!B42=\"Renter\",E84*D91>'Development Costs'!F41*'Gap Financing Options'!B79),'Development Costs'!F41*'Gap Financing Options'!B79,E84*D91)","v":0}]
["Imputed Loan Amount",null,null,null,{"$f":"IF(AND(D43=1,'Basic Financial'!B34=0),E91+'Gap Financing Options'!C74,0)","v":0}]
["Rate",null,null,null,{"$f":"IF(D43=1,D37,0)","v":0}]
["Amortization Period, Years",null,null,null,{"$f":"IF(D43=1,D38,0)","v":0}]
["Annual Debt Service (Amortized)",null,null,null,{"$f":"IFERROR(PMT(E93/12,E94*12,E92)*12,0)","v":0}]
[]
["Total Debt",null,null,null,{"$f":"E86+E92","v":0}]
["Total Debt Service",null,null,null,{"$f":"E89+E95","v":0}]
["Summary"]
["Total Development Costs",null,null,null,{"$f":"C57","v":0}]
["Equity Required",null,null,null,{"$f":"IF(E100-E97<0,1,E100-E97)","v":0}]
["Total Development Offsets (Contributions to Equity)",null,null,null,{"$f":"F7","v":0}]
["Net Equity Required",null,null,null,{"$f":"E101-E102","v":0}]
["Total Project Cost",null,null,null,{"$f":"E100","v":0}]
["Total Project Cost After Development Offsets",null,null,null,{"$f":"E104-E102","v":0}]
["Public Participation"]
["Capital Recovery (from grants)",null,null,null,{"$f":"D40","v":0}]
["Annual Cash Throw Off",null,null,null,{"$f":"D41","v":0}]
["Share of Net Sales Price",null,null,null,{"$f":"D42","v":0}]
["Public Leveraging Loan Included in Analysis? ",null,null,"(1=Yes; 0=No)",{"$f":"D43","v":0}]
["Target IRR",null,null,null,{"$f":"D44","v":0.05}]
[]
[]
["Operating Statement",null,null,null,"Year 1","Year 2","Year 3","Year 4","Year 5","Year 6","Year 7","Year 8","Year 9","Year 10"]
["GPI",null,"Escalation",{"$f":"D47","v":0.03},{"$f":"E62","v":0},{"$f":"E115*(1+$D$115)","v":0},0,0,0,0,0,0,0,0]
["Other Income",null,null,null,{"$f":"E63","v":0},0,0,0,0,0,0,0,0,0]
["Total Income",null,null,null,{"$f":"E115+E116","v":0},0,0,0,0,0,0,0,0,0]
["Less: Vacancy",null,null,{"$f":"C65","v":0},{"$f":"IF('Advanced Financial'!B31>0,(1-'Advanced Financial'!B31)*E117,$D$118*E117)","v":0},{"$f":"$D$118*F117","v":0},0,0,0,0,0,0,0,0]
["Less: Concessions, Market Loss",null,null,{"$f":"C66","v":0},{"$f":"$D$119*E117","v":0},0,0,0,0,0,0,0,0,0]
["EGI",null,null,null,{"$f":"E117-E118-E119","v":0},0,0,0,0,0,0,0,0,0]
["Less: Operating Costs",null,"Escalation",{"$f":"D49","v":0.03},{"$f":"E68","v":0},{"$f":"E121*(1+$D$121)","v":0},0,0,0,0,0,0,0,0]
["Less: Property Taxes",null,"Millage Rate",{"$f":"'Advanced Financial'!C63","v":0.01},{"$f":"$D16*$D122*'Advanced Financial'!$C64","v":0},{"$f":"$D16*$D122*'Advanced Financial'!$C64*(1+'Advanced Financial'!C86)","v":0},{"$f":"$D16*$D122*'Advanced Financial'!$C64*(1+'Advanced Financial'!C86)^2","v":0},{"$f":"$D16*$D122*'Advanced Financial'!$C64*(1+'Advanced Financial'!C86)^3","v":0},{"$f":"$D16*$D122*'Advanced Financial'!$C64*(1+'Advanced Financial'!C86)^4","v":0},{"$f":"$D16*$D122*'Advanced Financial'!$C64*(1+'Advanced Financial'!C86)^5","v":0},{"$f":"$D16*$D122*'Advanced Financial'!$C64*(1+'Advanced Financial'!C86)^6","v":0},{"$f":"$D16*$D122*'Advanced Financial'!$C64*(1+'Advanced Financial'!C86)^7","v":0},{"$f":"$D16*$D122*'Advanced Financial'!$C64*(1+'Advanced Financial'!C86)^8","v":0},{"$f":"$D16*$D122*'Advanced Financial'!$C64*(1+'Advanced Financial'!C86)^9","v":0}]
["Plus: Property Tax Abatement",null,null,null,{"$f":"IF(OR(BF_Subsidy=0,BF_Subsidy=\"\"),$D$13*'Advanced Financial'!$C64*$F8*'Gap Financing Options'!C17,0)","v":0},{"$f":"IF(OR(BF_Subsidy=0,BF_Subsidy=\"\"),$D$13*'Advanced Financial'!$C64*$F8*(1+$D$115)*'Gap Financing Options'!C18,0)","v":0},{"$f":"IF(OR(BF_Subsidy=0,BF_Subsidy=\"\"),$D$13*'Advanced Financial'!$C64*$F8*(1+$D$115)^2*'Gap Financing Options'!C19,0)","v":0},{"$f":"IF(OR(BF_Subsidy=0,BF_Subsidy=\"\"),$D$13*'Advanced Financial'!$C64*$F8*(1+$D$115)^3*'Gap Financing Options'!C20,0)","v":0},{"$f":"IF(OR(BF_Subsidy=0,BF_Subsidy=\"\"),$D$13*'Advanced Financial'!$C64*$F8*(1+$D$115)^4*'Gap Financing Options'!C21,0)","v":0},{"$f":"IF(OR(BF_Subsidy=0,BF_Subsidy=\"\"),$D$13*'Advanced Financial'!$C64*$F8*(1+$D$115)^5*'Gap Financing Options'!C22,0)","v":0},{"$f":"IF(OR(BF_Subsidy=0,BF_Subsidy=\"\"),$D$13*'Advanced Financial'!$C64*$F8*(1+$D$115)^6*'Gap Financing Options'!C23,0)","v":0},{"$f":"IF(OR(BF_Subsidy=0,BF_Subsidy=\"\"),$D$13*'Advanced Financial'!$C64*$F8*(1+$D$115)^7*'Gap Financing Options'!C24,0)","v":0},{"$f":"IF(OR(BF_Subsidy=0,BF_Subsidy=\"\"),$D$13*'Advanced Financial'!$C64*$F8*(1+$D$115)^8*'Gap Financing Options'!C25,0)","v":0},{"$f":"IF(OR(BF_Subsidy=0,BF_Subsidy=\"\"),$D$13*'Advanced Financial'!$C64*$F8*(1+$D$115)^9*'Gap Financing Options'!C26,0)","v":0}]
["Plus: Vertical Housing Tax Exemption",null,null,null,{"$f":"IF('Gap Financing Options'!$B$29=\"Y\",(($D$17*'Advanced Financial'!$C$63*'Advanced Financial'!$C$64*ImpExemption)+(-'Development Costs'!$E$8*'Advanced Financial'!$C$63*'Advanced Financial'!$C$64*LandExemption)),0)","v":0},{"$f":"IF('Gap Financing Options'!$B$29=\"Y\",(($D$17*'Advanced Financial'!$C$63*'Advanced Financial'!$C$64*ImpExemption)+(-'Development Costs'!$E$8*'Advanced Financial'!$C$63*'Advanced Financial'!$C$64*LandExemption)),0)*(1+'Advanced Financial'!C84)","v":0},{"$f":"IF('Gap Financing Options'!$B$29=\"Y\",(($D$17*'Advanced Financial'!$C$63*'Advanced Financial'!$C$64*ImpExemption)+(-'Development Costs'!$E$8*'Advanced Financial'!$C$63*'Advanced Financial'!$C$64*LandExemption)),0)*(1+'Advanced Financial'!$C$86)^2","v":0},{"$f":"IF('Gap Financing Options'!$B$29=\"Y\",(($D$17*'Advanced Financial'!$C$63*'Advanced Financial'!$C$64*ImpExemption)+(-'Development Costs'!$E$8*'Advanced Financial'!$C$63*'Advanced Financial'!$C$64*LandExemption)),0)*(1+'Advanced Financial'!$C$86)^3","v":0},{"$f":"IF('Gap Financing Options'!$B$29=\"Y\",(($D$17*'Advanced Financial'!$C$63*'Advanced Financial'!$C$64*ImpExemption)+(-'Development Costs'!$E$8*'Advanced Financial'!$C$63*'Advanced Financial'!$C$64*LandExemption)),0)*(1+'Advanced Financial'!$C$86)^4","v":0},{"$f":"IF('Gap Financing Options'!$B$29=\"Y\",(($D$17*'Advanced Financial'!$C$63*'Advanced Financial'!$C$64*ImpExemption)+(-'Development Costs'!$E$8*'Advanced Financial'!$C$63*'Advanced Financial'!$C$64*LandExemption)),0)*(1+'Advanced Financial'!$C$86)^5","v":0},{"$f":"IF('Gap Financing Options'!$B$29=\"Y\",(($D$17*'Advanced Financial'!$C$63*'Advanced Financial'!$C$64*ImpExemption)+(-'Development Costs'!$E$8*'Advanced Financial'!$C$63*'Advanced Financial'!$C$64*LandExemption)),0)*(1+'Advanced Financial'!$C$86)^6","v":0},{"$f":"IF('Gap Financing Options'!$B$29=\"Y\",(($D$17*'Advanced Financial'!$C$63*'Advanced Financial'!$C$64*ImpExemption)+(-'Development Costs'!$E$8*'Advanced Financial'!$C$63*'Advanced Financial'!$C$64*LandExemption)),0)*(1+'Advanced Financial'!$C$86)^7","v":0},{"$f":"IF('Gap Financing Options'!$B$29=\"Y\",(($D$17*'Advanced Financial'!$C$63*'Advanced Financial'!$C$64*ImpExemption)+(-'Development Costs'!$E$8*'Advanced Financial'!$C$63*'Advanced Financial'!$C$64*LandExemption)),0)*(1+'Advanced Financial'!$C$86)^8","v":0},{"$f":"IF('Gap Financing Options'!$B$29=\"Y\",(($D$17*'Advanced Financial'!$C$63*'Advanced Financial'!$C$64*ImpExemption)+(-'Development Costs'!$E$8*'Advanced Financial'!$C$63*'Advanced Financial'!$C$64*LandExemption)),0)*(1+'Advanced Financial'!$C$86)^9","v":0}]
["Cash Throw Off to Public Partner",null,null,null,{"$f":"IF(OR(BF_Subsidy=0,BF_Subsidy=\"\"),-$E$108,0)","v":0},0,0,0,0,0,0,0,0,0]
["TIF + IRA Retainage of Taxes",null,null,null,{"$f":"IF(OR(BF_Subsidy=0,BF_Subsidy=\"\"),'Gap Financing Options'!C54,0)","v":0},{"$f":"IF(OR(BF_Subsidy=0,BF_Subsidy=\"\"),'Gap Financing Options'!C55,0)","v":0},{"$f":"IF(OR(BF_Subsidy=0,BF_Subsidy=\"\"),'Gap Financing Options'!C56,0)","v":0},{"$f":"IF(OR(BF_Subsidy=0,BF_Subsidy=\"\"),'Gap Financing Options'!C57,0)","v":0},{"$f":"IF(OR(BF_Subsidy=0,BF_Subsidy=\"\"),'Gap Financing Options'!C58,0)","v":0},{"$f":"IF(OR(BF_Subsidy=0,BF_Subsidy=\"\"),'Gap Financing Options'!C59,0)","v":0},{"$f":"IF(OR(BF_Subsidy=0,BF_Subsidy=\"\"),'Gap Financing Options'!C60,0)","v":0},{"$f":"IF(OR(BF_Subsidy=0,BF_Subsidy=\"\"),'Gap Financing Options'!C61,0)","v":0},{"$f":"IF(OR(BF_Subsidy=0,BF_Subsidy=\"\"),'Gap Financing Options'!C62,0)","v":0},{"$f":"IF(OR(BF_Subsidy=0,BF_Subsidy=\"\"),'Gap Financing Options'!C63,0)","v":0}]
["NOI",null,null,null,{"$f":"E120-E122-E121+E123+E124+E125+E126","v":0},{"$f":"F120-F122-F121+F123+F124+F125+F126","v":0},0,0,0,0,0,0,0,{"$f":"N120-N122-N121+N123+N124+N125+N126","v":0}]
[]
["Less: Debt Service",null,null,null,{"$f":"-$E$98","v":0},0,0,0,0,0,0,0,0,0]
["Net Cash Flow",null,null,null,{"$f":"E127-E129","v":0},0,0,0,0,0,0,0,0,0]
[]
["Cap Rate",null,null,null,{"$f":"IFERROR(E127/$E$100,0)","v":0},0,0,0,0,0,0,0,0,0]
["Cash on Cash Return (Equity Dividend Rate)",null,null,null,{"$f":"IFERROR(E130/$E$103,0)","v":0},{"$f":"IFERROR(F130/$E$103,0)","v":0},0,0,0,0,0,0,0,{"$f":"IFERROR(N130/$E$103,0)","v":0}]
[]
["Project Value",null,null,"Year 0","Year 1","Year 2","Year 3","Year 4","Year 5","Year 6","Year 7","Year 8","Year 9","Year 10"]
["Terminal Cap Rate, Gross Sales Price",null,null,null,{"$f":"D52","v":4.4999999999999998E-2},null,null,null,null,null,null,null,null,{"$f":"IFERROR(N127/E136,0)","v":0}]
["Net Sales = Price Less Sales Cost",null,null,null,{"$f":"D53","v":0.05},null,null,null,null,null,null,null,null,{"$f":"N136*(1-E137)","v":0}]
["Less Mortgage Balance",null,null,null,null,null,null,null,null,null,null,null,null,{"$f":"AA183","v":0}]
["Net Sales Proceeds",null,null,null,null,null,null,null,null,null,null,null,null,{"$f":"N137-N138","v":0}]
[]
[]
["IRR - Unleveraged (Project Cost)",null,null,"Year 0","Year 1","Year 2","Year 3","Year 4","Year 5","Year 6","Year 7","Year 8","Year 9","Year 10"]
["Total Investment",null,null,{"$f":"-E105","v":0}]
["Project NOI",null,null,null,{"$f":"E127","v":0},{"$f":"F127","v":0},0,0,0,0,0,0,0,0]
["Net Sales Price",null,null,null,null,null,null,null,null,null,null,null,null,{"$f":"N137","v":0}]
["Total",null,null,{"$f":"SUM(D143:D145)","v":0},{"$f":"SUM(E143:E145)","v":0},{"$f":"SUM(F143:F145)","v":0},0,0,0,0,0,0,0,0]
["IRR - Project Cost",null,null,null,null,null,null,null,null,null,null,null,null,{"$f":"IFERROR(IRR(D146:N146),0)","v":0}]
["NPV - Project Cost",null,null,null,null,null,null,null,null,null,null,null,null,{"$f":"NPV(L6,D146:N146)","v":0}]
[]
["IRR - Leveraged (Before Tax)",null,null,"Year 0","Year 1","Year 2","Year 3","Year 4","Year 5","Year 6","Year 7","Year 8","Year 9","Year 10"]
["Original Investment (Equity)",null,null,{"$f":"-E103","v":0}]
["Project Cash Flow",null,null,null,{"$f":"E130","v":0},0,0,0,0,0,0,0,0,0]
["Net Sales Proceeds",null,null,null,null,null,null,null,null,null,null,null,null,{"$f":"N139","v":0}]
["Total",null,null,{"$f":"SUM(D151:D153)","v":0},0,0,0,0,0,{"$f":"SUM(J151:J153)","v":0},{"$f":"SUM(K151:K153)","v":0},{"$f":"SUM(L151:L153)","v":0},{"$f":"SUM(M151:M153)","v":0},{"$f":"SUM(N151:N153)","v":0}]
["IRR - Equity",null,null,null,null,null,null,null,null,null,null,null,null,{"$f":"IFERROR(IRR(D154:N154),0)","v":0}]
["NPV - Equity",null,null,null,null,null,null,null,null,null,null,null,null,{"$f":"NPV(L7,D154:N154)","v":0}]
[]
["IRR - Public Participation",null,null,"Year 0","Year 1","Year 2","Year 3","Year 4","Year 5","Year 6","Year 7","Year 8","Year 9","Year 10"]
["Original Investment (Equity)",null,null,{"$f":"-(E107+(E92*E110))","v":0}]
["Mezzanine Financing",null,null,null,{"$f":"-$E$95","v":0},0,0,0,0,0,0,0,0,0]
["Cash Throw Off",null,null,null,{"$f":"$E$108","v":0},0,0,0,0,0,0,0,0,0]
["Sale Proceeds",null,null,null,null,null,null,null,null,null,null,null,null,{"$f":"N153*E109","v":0}]
["Loan Balance",null,null,null,null,null,null,null,null,null,null,null,null,{"$f":"V183*E110","v":0}]
["Total",null,null,{"$f":"SUM(D159:D163)","v":0},{"$f":"SUM(E159:E163)","v":0},0,0,0,0,0,0,0,0,0]
["IRR - Equity",null,null,null,null,null,null,null,null,null,null,null,null,{"$f":"IFERROR(IRR(D164:N164),0)","v":0}]
["NPV - Equity",null,null,null,null,null,null,null,null,null,null,null,null,{"$f":"NPV(E111,D164:N164)","v":0}]
[]
[]
[]
["DEBT SERVICE MORTIZATION TABLES"]
["Primary Debt Amortization",null,null,null,null,"Low Interest Loan",null,null,null,null,"Total Debt Amortization",null,null,null,null,"Annual Debt Service Summary - Primary Debt",null,null,null,null,"Annual Debt Service Summary - Secondary Debt",null,null,null,null,"Annual Debt Service Summary - Total Debt"]
[]
["Period","Balance","Payment","Interest","Principal","Period","Balance","Payment","Interest","Principal","Period","Balance","Payment","Interest","Principal","Year","Balance","Payment","Interest","Principal","Year","Balance","Payment","Interest","Principal","Year","Balance","Payment","Interest","Principal"]
[0,{"$f":"'Residential Rental'!E86","v":0},null,null,null,0,{"$f":"'Residential Rental'!E92","v":0},null,null,null,0,{"$f":"B174+G174","v":0},null,null,null,1,{"$f":"B186","v":0},{"$f":"SUM(C175:C186)","v":0},{"$f":"SUM(D175:D186)","v":0},{"$f":"SUM(E175:E186)","v":0},1,{"$f":"G186","v":0},{"$f":"SUM(H175:H186)","v":0},{"$f":"SUM(I175:I186)","v":0},{"$f":"SUM(J175:J186)","v":0},1,{"$f":"Q174+V174","v":0},{"$f":"R174+W174","v":0},{"$f":"S174+X174","v":0},{"$f":"T174+Y174","v":0}]
[1,{"$f":"B174-E175","v":0},{"$f":"-'Residential Rental'!$E$89/12","v":0},{"$f":"'Residential Rental'!$E$87/12*B174","v":0},{"$f":"C175-D175","v":0},1,{"$f":"G174-J175","v":0},{"$f":"-'Residential Rental'!$E$95/12","v":0},{"$f":"'Residential Rental'!$E$93/12*G174","v":0},{"$f":"H175-I175","v":0},1,{"$f":"G175+B175","v":0},0,0,0,2,{"$f":"B198","v":0},{"$f":"SUM(C187:C198)","v":0},{"$f":"SUM(D187:D198)","v":0},{"$f":"SUM(E187:E198)","v":0},2,{"$f":"G198","v":0},{"$f":"SUM(H187:H198)","v":0},{"$f":"SUM(I187:I198)","v":0},{"$f":"SUM(J187:J198)","v":0},2,{"$f":"Q175+V175","v":0},{"$f":"R175+W175","v":0},{"$f":"S175+X175","v":0},{"$f":"T175+Y175","v":0}]
[{"$f":"A175+1","v":2},0,{"$f":"-'Residential Rental'!$E$89/12","v":0},{"$f":"'Residential Rental'!$E$87/12*B175","v":0},0,{"$f":"F175+1","v":2},0,{"$f":"-'Residential Rental'!$E$95/12","v":0},{"$f":"'Residential Rental'!$E$93/12*G175","v":0},0,{"$f":"K175+1","v":2},0,0,0,0,3,{"$f":"B210","v":0},{"$f":"SUM(C199:C210)","v":0},{"$f":"SUM(D199:D210)","v":0},{"$f":"SUM(E199:E210)","v":0},3,{"$f":"G210","v":0},{"$f":"SUM(H199:H210)","v":0},{"$f":"SUM(I199:I210)","v":0},{"$f":"SUM(J199:J210)","v":0},3,0,0,0,0]
[3,0,{"$f":"-'Residential Rental'!$E$89/12","v":0},{"$f":"'Residential Rental'!$E$87/12*B176","v":0},0,3,0,{"$f":"-'Residential Rental'!$E$95/12","v":0},{"$f":"'Residential Rental'!$E$93/12*G176","v":0},0,3,0,0,0,0,4,{"$f":"B222","v":0},{"$f":"SUM(C211:C222)","v":0},{"$f":"SUM(D211:D222)","v":0},{"$f":"SUM(E211:E222)","v":0},4,{"$f":"G222","v":0},{"$f":"SUM(H211:H222)","v":0},{"$f":"SUM(I211:I222)","v":0},{"$f":"SUM(J211:J222)","v":0},4,0,0,0,0]
[4,0,{"$f":"-'Residential Rental'!$E$89/12","v":0},{"$f":"'Residential Rental'!$E$87/12*B177","v":0},0,4,0,{"$f":"-'Residential Rental'!$E$95/12","v":0},{"$f":"'Residential Rental'!$E$93/12*G177","v":0},0,4,0,0,0,0,5,{"$f":"B234","v":0},{"$f":"SUM(C223:C234)","v":0},{"$f":"SUM(D223:D234)","v":0},{"$f":"SUM(E223:E234)","v":0},5,{"$f":"G234","v":0},{"$f":"SUM(H223:H234)","v":0},{"$f":"SUM(I223:I234)","v":0},{"$f":"SUM(J223:J234)","v":0},5,0,0,0,0]
[5,0,{"$f":"-'Residential Rental'!$E$89/12","v":0},{"$f":"'Residential Rental'!$E$87/12*B178","v":0},0,5,0,{"$f":"-'Residential Rental'!$E$95/12","v":0},{"$f":"'Residential Rental'!$E$93/12*G178","v":0},0,5,0,0,0,0,6,{"$f":"B246","v":0},{"$f":"SUM(C235:C246)","v":0},{"$f":"SUM(D235:D246)","v":0},{"$f":"SUM(E235:E246)","v":0},6,{"$f":"G246","v":0},{"$f":"SUM(H235:H246)","v":0},{"$f":"SUM(I235:I246)","v":0},{"$f":"SUM(J235:J246)","v":0},6,0,0,0,0]
[6,0,{"$f":"-'Residential Rental'!$E$89/12","v":0},{"$f":"'Residential Rental'!$E$87/12*B179","v":0},0,6,0,{"$f":"-'Residential Rental'!$E$95/12","v":0},{"$f":"'Residential Rental'!$E$93/12*G179","v":0},0,6,0,0,0,0,7,{"$f":"B258","v":0},{"$f":"SUM(C247:C258)","v":0},{"$f":"SUM(D247:D258)","v":0},{"$f":"SUM(E247:E258)","v":0},7,{"$f":"G258","v":0},{"$f":"SUM(H247:H258)","v":0},{"$f":"SUM(I247:I258)","v":0},{"$f":"SUM(J247:J258)","v":0},7,0,0,0,0]
[7,0,{"$f":"-'Residential Rental'!$E$89/12","v":0},{"$f":"'Residential Rental'!$E$87/12*B180","v":0},0,7,0,{"$f":"-'Residential Rental'!$E$95/12","v":0},{"$f":"'Residential Rental'!$E$93/12*G180","v":0},0,7,0,0,0,0,8,{"$f":"B270","v":0},{"$f":"SUM(C259:C270)","v":0},{"$f":"SUM(D259:D270)","v":0},{"$f":"SUM(E259:E270)","v":0},8,{"$f":"G270","v":0},{"$f":"SUM(H259:H270)","v":0},{"$f":"SUM(I259:I270)","v":0},{"$f":"SUM(J259:J270)","v":0},8,0,0,0,0]
[8,0,{"$f":"-'Residential Rental'!$E$89/12","v":0},{"$f":"'Residential Rental'!$E$87/12*B181","v":0},0,8,0,{"$f":"-'Residential Rental'!$E$95/12","v":0},{"$f":"'Residential Rental'!$E$93/12*G181","v":0},0,8,0,0,0,0,9,{"$f":"B282","v":0},{"$f":"SUM(C271:C282)","v":0},{"$f":"SUM(D271:D282)","v":0},{"$f":"SUM(E271:E282)","v":0},9,{"$f":"G282","v":0},{"$f":"SUM(H271:H282)","v":0},{"$f":"SUM(I271:I282)","v":0},{"$f":"SUM(J271:J282)","v":0},9,0,0,0,0]
[9,0,{"$f":"-'Residential Rental'!$E$89/12","v":0},{"$f":"'Residential Rental'!$E$87/12*B182","v":0},0,9,0,{"$f":"-'Residential Rental'!$E$95/12","v":0},{"$f":"'Residential Rental'!$E$93/12*G182","v":0},0,9,0,0,0,0,10,{"$f":"B294","v":0},{"$f":"SUM(C283:C294)","v":0},{"$f":"SUM(D283:D294)","v":0},{"$f":"SUM(E283:E294)","v":0},10,{"$f":"G294","v":0},{"$f":"SUM(H283:H294)","v":0},{"$f":"SUM(I283:I294)","v":0},{"$f":"SUM(J283:J294)","v":0},10,{"$f":"Q183+V183","v":0},0,0,{"$f":"T183+Y183","v":0}]
[10,0,{"$f":"-'Residential Rental'!$E$89/12","v":0},{"$f":"'Residential Rental'!$E$87/12*B183","v":0},0,10,0,{"$f":"-'Residential Rental'!$E$95/12","v":0},{"$f":"'Residential Rental'!$E$93/12*G183","v":0},0,10,0,0,0,0]
[11,0,{"$f":"-'Residential Rental'!$E$89/12","v":0},{"$f":"'Residential Rental'!$E$87/12*B184","v":0},0,11,0,{"$f":"-'Residential Rental'!$E$95/12","v":0},{"$f":"'Residential Rental'!$E$93/12*G184","v":0},0,11,0,0,0,0]
[12,0,{"$f":"-'Residential Rental'!$E$89/12","v":0},{"$f":"'Residential Rental'!$E$87/12*B185","v":0},0,12,0,{"$f":"-'Residential Rental'!$E$95/12","v":0},{"$f":"'Residential Rental'!$E$93/12*G185","v":0},0,12,0,0,0,0]
[13,0,{"$f":"-'Residential Rental'!$E$89/12","v":0},{"$f":"'Residential Rental'!$E$87/12*B186","v":0},0,13,0,{"$f":"-'Residential Rental'!$E$95/12","v":0},{"$f":"'Residential Rental'!$E$93/12*G186","v":0},0,13,0,0,0,0]
[14,0,{"$f":"-'Residential Rental'!$E$89/12","v":0},{"$f":"'Residential Rental'!$E$87/12*B187","v":0},0,14,0,{"$f":"-'Residential Rental'!$E$95/12","v":0},{"$f":"'Residential Rental'!$E$93/12*G187","v":0},0,14,0,0,0,0]
[15,0,{"$f":"-'Residential Rental'!$E$89/12","v":0},{"$f":"'Residential Rental'!$E$87/12*B188","v":0},0,15,0,{"$f":"-'Residential Rental'!$E$95/12","v":0},{"$f":"'Residential Rental'!$E$93/12*G188","v":0},0,15,0,0,0,0]
[16,0,{"$f":"-'Residential Rental'!$E$89/12","v":0},{"$f":"'Residential Rental'!$E$87/12*B189","v":0},0,16,0,{"$f":"-'Residential Rental'!$E$95/12","v":0},{"$f":"'Residential Rental'!$E$93/12*G189","v":0},0,16,0,0,0,0]
[17,0,{"$f":"-'Residential Rental'!$E$89/12","v":0},{"$f":"'Residential Rental'!$E$87/12*B190","v":0},0,17,0,{"$f":"-'Residential Rental'!$E$95/12","v":0},{"$f":"'Residential Rental'!$E$93/12*G190","v":0},0,17,0,0,0,0]
[18,0,{"$f":"-'Residential Rental'!$E$89/12","v":0},{"$f":"'Residential Rental'!$E$87/12*B191","v":0},0,18,0,{"$f":"-'Residential Rental'!$E$95/12","v":0},{"$f":"'Residential Rental'!$E$93/12*G191","v":0},0,18,0,0,0,0]
[19,0,{"$f":"-'Residential Rental'!$E$89/12","v":0},{"$f":"'Residential Rental'!$E$87/12*B192","v":0},0,19,0,{"$f":"-'Residential Rental'!$E$95/12","v":0},{"$f":"'Residential Rental'!$E$93/12*G192","v":0},0,19,0,0,0,0]
[20,0,{"$f":"-'Residential Rental'!$E$89/12","v":0},{"$f":"'Residential Rental'!$E$87/12*B193","v":0},0,20,0,{"$f":"-'Residential Rental'!$E$95/12","v":0},{"$f":"'Residential Rental'!$E$93/12*G193","v":0},0,20,0,0,0,0]
[21,0,{"$f":"-'Residential Rental'!$E$89/12","v":0},{"$f":"'Residential Rental'!$E$87/12*B194","v":0},0,21,0,{"$f":"-'Residential Rental'!$E$95/12","v":0},{"$f":"'Residential Rental'!$E$93/12*G194","v":0},0,21,0,0,0,0]
[22,0,{"$f":"-'Residential Rental'!$E$89/12","v":0},{"$f":"'Residential Rental'!$E$87/12*B195","v":0},0,22,0,{"$f":"-'Residential Rental'!$E$95/12","v":0},{"$f":"'Residential Rental'!$E$93/12*G195","v":0},0,22,0,0,0,0]
[23,0,{"$f":"-'Residential Rental'!$E$89/12","v":0},{"$f":"'Residential Rental'!$E$87/12*B196","v":0},0,23,0,{"$f":"-'Residential Rental'!$E$95/12","v":0},{"$f":"'Residential Rental'!$E$93/12*G196","v":0},0,23,0,0,0,0]
[24,0,{"$f":"-'Residential Rental'!$E$89/12","v":0},{"$f":"'Residential Rental'!$E$87/12*B197","v":0},0,24,0,{"$f":"-'Residential Rental'!$E$95/12","v":0},{"$f":"'Residential Rental'!$E$93/12*G197","v":0},0,24,0,0,0,0]
[25,0,{"$f":"-'Residential Rental'!$E$89/12","v":0},{"$f":"'Residential Rental'!$E$87/12*B198","v":0},0,25,0,{"$f":"-'Residential Rental'!$E$95/12","v":0},{"$f":"'Residential Rental'!$E$93/12*G198","v":0},0,25,0,0,0,0]
[26,0,{"$f":"-'Residential Rental'!$E$89/12","v":0},{"$f":"'Residential Rental'!$E$87/12*B199","v":0},0,26,0,{"$f":"-'Residential Rental'!$E$95/12","v":0},{"$f":"'Residential Rental'!$E$93/12*G199","v":0},0,26,0,0,0,0]
[27,0,{"$f":"-'Residential Rental'!$E$89/12","v":0},{"$f":"'Residential Rental'!$E$87/12*B200","v":0},0,27,0,{"$f":"-'Residential Rental'!$E$95/12","v":0},{"$f":"'Residential Rental'!$E$93/12*G200","v":0},0,27,0,0,0,0]
[28,0,{"$f":"-'Residential Rental'!$E$89/12","v":0},{"$f":"'Residential Rental'!$E$87/12*B201","v":0},0,28,0,{"$f":"-'Residential Rental'!$E$95/12","v":0},{"$f":"'Residential Rental'!$E$93/12*G201","v":0},0,28,0,0,0,0]
[29,0,{"$f":"-'Residential Rental'!$E$89/12","v":0},{"$f":"'Residential Rental'!$E$87/12*B202","v":0},0,29,0,{"$f":"-'Residential Rental'!$E$95/12","v":0},{"$f":"'Residential Rental'!$E$93/12*G202","v":0},0,29,0,0,0,0]
[30,0,{"$f":"-'Residential Rental'!$E$89/12","v":0},{"$f":"'Residential Rental'!$E$87/12*B203","v":0},0,30,0,{"$f":"-'Residential Rental'!$E$95/12","v":0},{"$f":"'Residential Rental'!$E$93/12*G203","v":0},0,30,0,0,0,0]
[31,0,{"$f":"-'Residential Rental'!$E$89/12","v":0},{"$f":"'Residential Rental'!$E$87/12*B204","v":0},0,31,0,{"$f":"-'Residential Rental'!$E$95/12","v":0},{"$f":"'Residential Rental'!$E$93/12*G204","v":0},0,31,0,0,0,0]
[32,0,{"$f":"-'Residential Rental'!$E$89/12","v":0},{"$f":"'Residential Rental'!$E$87/12*B205","v":0},0,32,0,{"$f":"-'Residential Rental'!$E$95/12","v":0},{"$f":"'Residential Rental'!$E$93/12*G205","v":0},0,32,0,0,0,0]
[33,0,{"$f":"-'Residential Rental'!$E$89/12","v":0},{"$f":"'Residential Rental'!$E$87/12*B206","v":0},0,33,0,{"$f":"-'Residential Rental'!$E$95/12","v":0},{"$f":"'Residential Rental'!$E$93/12*G206","v":0},0,33,0,0,0,0]
[34,0,{"$f":"-'Residential Rental'!$E$89/12","v":0},{"$f":"'Residential Rental'!$E$87/12*B207","v":0},0,34,0,{"$f":"-'Residential Rental'!$E$95/12","v":0},{"$f":"'Residential Rental'!$E$93/12*G207","v":0},0,34,0,0,0,0]
[35,0,{"$f":"-'Residential Rental'!$E$89/12","v":0},{"$f":"'Residential Rental'!$E$87/12*B208","v":0},0,35,0,{"$f":"-'Residential Rental'!$E$95/12","v":0},{"$f":"'Residential Rental'!$E$93/12*G208","v":0},0,35,0,0,0,0]
[36,0,{"$f":"-'Residential Rental'!$E$89/12","v":0},{"$f":"'Residential Rental'!$E$87/12*B209","v":0},0,36,0,{"$f":"-'Residential Rental'!$E$95/12","v":0},{"$f":"'Residential Rental'!$E$93/12*G209","v":0},0,36,0,0,0,0]
[37,0,{"$f":"-'Residential Rental'!$E$89/12","v":0},{"$f":"'Residential Rental'!$E$87/12*B210","v":0},0,37,0,{"$f":"-'Residential Rental'!$E$95/12","v":0},{"$f":"'Residential Rental'!$E$93/12*G210","v":0},0,37,0,0,0,0]
[38,0,{"$f":"-'Residential Rental'!$E$89/12","v":0},{"$f":"'Residential Rental'!$E$87/12*B211","v":0},0,38,0,{"$f":"-'Residential Rental'!$E$95/12","v":0},{"$f":"'Residential Rental'!$E$93/12*G211","v":0},0,38,0,0,0,0]
[39,0,{"$f":"-'Residential Rental'!$E$89/12","v":0},{"$f":"'Residential Rental'!$E$87/12*B212","v":0},0,39,0,{"$f":"-'Residential Rental'!$E$95/12","v":0},{"$f":"'Residential Rental'!$E$93/12*G212","v":0},0,39,0,0,0,0]
[40,0,{"$f":"-'Residential Rental'!$E$89/12","v":0},{"$f":"'Residential Rental'!$E$87/12*B213","v":0},0,40,0,{"$f":"-'Residential Rental'!$E$95/12","v":0},{"$f":"'Residential Rental'!$E$93/12*G213","v":0},0,40,0,0,0,0]
[41,0,{"$f":"-'Residential Rental'!$E$89/12","v":0},{"$f":"'Residential Rental'!$E$87/12*B214","v":0},0,41,0,{"$f":"-'Residential Rental'!$E$95/12","v":0},{"$f":"'Residential Rental'!$E$93/12*G214","v":0},0,41,0,0,0,0]
[42,0,{"$f":"-'Residential Rental'!$E$89/12","v":0},{"$f":"'Residential Rental'!$E$87/12*B215","v":0},0,42,0,{"$f":"-'Residential Rental'!$E$95/12","v":0},{"$f":"'Residential Rental'!$E$93/12*G215","v":0},0,42,0,0,0,0]
[43,0,{"$f":"-'Residential Rental'!$E$89/12","v":0},{"$f":"'Residential Rental'!$E$87/12*B216","v":0},0,43,0,{"$f":"-'Residential Rental'!$E$95/12","v":0},{"$f":"'Residential Rental'!$E$93/12*G216","v":0},0,43,0,0,0,0]
[44,0,{"$f":"-'Residential Rental'!$E$89/12","v":0},{"$f":"'Residential Rental'!$E$87/12*B217","v":0},0,44,0,{"$f":"-'Residential Rental'!$E$95/12","v":0},{"$f":"'Residential Rental'!$E$93/12*G217","v":0},0,44,0,0,0,0]
[45,0,{"$f":"-'Residential Rental'!$E$89/12","v":0},{"$f":"'Residential Rental'!$E$87/12*B218","v":0},0,45,0,{"$f":"-'Residential Rental'!$E$95/12","v":0},{"$f":"'Residential Rental'!$E$93/12*G218","v":0},0,45,0,0,0,0]
[46,0,{"$f":"-'Residential Rental'!$E$89/12","v":0},{"$f":"'Residential Rental'!$E$87/12*B219","v":0},0,46,0,{"$f":"-'Residential Rental'!$E$95/12","v":0},{"$f":"'Residential Rental'!$E$93/12*G219","v":0},0,46,0,0,0,0]
[47,0,{"$f":"-'Residential Rental'!$E$89/12","v":0},{"$f":"'Residential Rental'!$E$87/12*B220","v":0},0,47,0,{"$f":"-'Residential Rental'!$E$95/12","v":0},{"$f":"'Residential Rental'!$E$93/12*G220","v":0},0,47,0,0,0,0]
[48,0,{"$f":"-'Residential Rental'!$E$89/12","v":0},{"$f":"'Residential Rental'!$E$87/12*B221","v":0},0,48,0,{"$f":"-'Residential Rental'!$E$95/12","v":0},{"$f":"'Residential Rental'!$E$93/12*G221","v":0},0,48,0,0,0,0]
[49,0,{"$f":"-'Residential Rental'!$E$89/12","v":0},{"$f":"'Residential Rental'!$E$87/12*B222","v":0},0,49,0,{"$f":"-'Residential Rental'!$E$95/12","v":0},{"$f":"'Residential Rental'!$E$93/12*G222","v":0},0,49,0,0,0,0]
[50,0,{"$f":"-'Residential Rental'!$E$89/12","v":0},{"$f":"'Residential Rental'!$E$87/12*B223","v":0},0,50,0,{"$f":"-'Residential Rental'!$E$95/12","v":0},{"$f":"'Residential Rental'!$E$93/12*G223","v":0},0,50,0,0,0,0]
[51,0,{"$f":"-'Residential Rental'!$E$89/12","v":0},{"$f":"'Residential Rental'!$E$87/12*B224","v":0},0,51,0,{"$f":"-'Residential Rental'!$E$95/12","v":0},{"$f":"'Residential Rental'!$E$93/12*G224","v":0},0,51,0,0,0,0]
[52,0,{"$f":"-'Residential Rental'!$E$89/12","v":0},{"$f":"'Residential Rental'!$E$87/12*B225","v":0},0,52,0,{"$f":"-'Residential Rental'!$E$95/12","v":0},{"$f":"'Residential Rental'!$E$93/12*G225","v":0},0,52,0,0,0,0]
[53,0,{"$f":"-'Residential Rental'!$E$89/12","v":0},{"$f":"'Residential Rental'!$E$87/12*B226","v":0},0,53,0,{"$f":"-'Residential Rental'!$E$95/12","v":0},{"$f":"'Residential Rental'!$E$93/12*G226","v":0},0,53,0,0,0,0]
[54,0,{"$f":"-'Residential Rental'!$E$89/12","v":0},{"$f":"'Residential Rental'!$E$87/12*B227","v":0},0,54,0,{"$f":"-'Residential Rental'!$E$95/12","v":0},{"$f":"'Residential Rental'!$E$93/12*G227","v":0},0,54,0,0,0,0]
[55,0,{"$f":"-'Residential Rental'!$E$89/12","v":0},{"$f":"'Residential Rental'!$E$87/12*B228","v":0},0,55,0,{"$f":"-'Residential Rental'!$E$95/12","v":0},{"$f":"'Residential Rental'!$E$93/12*G228","v":0},0,55,0,0,0,0]
[56,0,{"$f":"-'Residential Rental'!$E$89/12","v":0},{"$f":"'Residential Rental'!$E$87/12*B229","v":0},0,56,0,{"$f":"-'Residential Rental'!$E$95/12","v":0},{"$f":"'Residential Rental'!$E$93/12*G229","v":0},0,56,0,0,0,0]
[57,0,{"$f":"-'Residential Rental'!$E$89/12","v":0},{"$f":"'Residential Rental'!$E$87/12*B230","v":0},0,57,0,{"$f":"-'Residential Rental'!$E$95/12","v":0},{"$f":"'Residential Rental'!$E$93/12*G230","v":0},0,57,0,0,0,0]
[58,0,{"$f":"-'Residential Rental'!$E$89/12","v":0},{"$f":"'Residential Rental'!$E$87/12*B231","v":0},0,58,0,{"$f":"-'Residential Rental'!$E$95/12","v":0},{"$f":"'Residential Rental'!$E$93/12*G231","v":0},0,58,0,0,0,0]
[59,0,{"$f":"-'Residential Rental'!$E$89/12","v":0},{"$f":"'Residential Rental'!$E$87/12*B232","v":0},0,59,0,{"$f":"-'Residential Rental'!$E$95/12","v":0},{"$f":"'Residential Rental'!$E$93/12*G232","v":0},0,59,0,0,0,0]
[60,0,{"$f":"-'Residential Rental'!$E$89/12","v":0},{"$f":"'Residential Rental'!$E$87/12*B233","v":0},0,60,0,{"$f":"-'Residential Rental'!$E$95/12","v":0},{"$f":"'Residential Rental'!$E$93/12*G233","v":0},0,60,0,0,0,0]
[61,0,{"$f":"-'Residential Rental'!$E$89/12","v":0},{"$f":"'Residential Rental'!$E$87/12*B234","v":0},0,61,0,{"$f":"-'Residential Rental'!$E$95/12","v":0},{"$f":"'Residential Rental'!$E$93/12*G234","v":0},0,61,0,0,0,0]
[62,0,{"$f":"-'Residential Rental'!$E$89/12","v":0},{"$f":"'Residential Rental'!$E$87/12*B235","v":0},0,62,0,{"$f":"-'Residential Rental'!$E$95/12","v":0},{"$f":"'Residential Rental'!$E$93/12*G235","v":0},0,62,0,0,0,0]
[63,0,{"$f":"-'Residential Rental'!$E$89/12","v":0},{"$f":"'Residential Rental'!$E$87/12*B236","v":0},0,63,0,{"$f":"-'Residential Rental'!$E$95/12","v":0},{"$f":"'Residential Rental'!$E$93/12*G236","v":0},0,63,0,0,0,0]
[64,0,{"$f":"-'Residential Rental'!$E$89/12","v":0},{"$f":"'Residential Rental'!$E$87/12*B237","v":0},0,64,0,{"$f":"-'Residential Rental'!$E$95/12","v":0},{"$f":"'Residential Rental'!$E$93/12*G237","v":0},0,64,0,0,0,{"$f":"J238+E238","v":0}]
[65,{"$f":"B238-E239","v":0},{"$f":"-'Residential Rental'!$E$89/12","v":0},{"$f":"'Residential Rental'!$E$87/12*B238","v":0},{"$f":"C239-D239","v":0},65,{"$f":"G238-J239","v":0},{"$f":"-'Residential Rental'!$E$95/12","v":0},{"$f":"'Residential Rental'!$E$93/12*G238","v":0},{"$f":"H239-I239","v":0},65,{"$f":"G239+B239","v":0},0,0,0]
[{"$f":"A239+1","v":66},0,{"$f":"-'Residential Rental'!$E$89/12","v":0},{"$f":"'Residential Rental'!$E$87/12*B239","v":0},0,{"$f":"F239+1","v":66},0,{"$f":"-'Residential Rental'!$E$95/12","v":0},{"$f":"'Residential Rental'!$E$93/12*G239","v":0},0,{"$f":"K239+1","v":66},0,0,0,0]
[67,0,{"$f":"-'Residential Rental'!$E$89/12","v":0},{"$f":"'Residential Rental'!$E$87/12*B240","v":0},0,67,0,{"$f":"-'Residential Rental'!$E$95/12","v":0},{"$f":"'Residential Rental'!$E$93/12*G240","v":0},0,67,0,0,0,0]
[68,0,{"$f":"-'Residential Rental'!$E$89/12","v":0},{"$f":"'Residential Rental'!$E$87/12*B241","v":0},0,68,0,{"$f":"-'Residential Rental'!$E$95/12","v":0},{"$f":"'Residential Rental'!$E$93/12*G241","v":0},0,68,0,0,0,0]
[69,0,{"$f":"-'Residential Rental'!$E$89/12","v":0},{"$f":"'Residential Rental'!$E$87/12*B242","v":0},0,69,0,{"$f":"-'Residential Rental'!$E$95/12","v":0},{"$f":"'Residential Rental'!$E$93/12*G242","v":0},0,69,0,0,0,0]
[70,0,{"$f":"-'Residential Rental'!$E$89/12","v":0},{"$f":"'Residential Rental'!$E$87/12*B243","v":0},0,70,0,{"$f":"-'Residential Rental'!$E$95/12","v":0},{"$f":"'Residential Rental'!$E$93/12*G243","v":0},0,70,0,0,0,0]
[71,0,{"$f":"-'Residential Rental'!$E$89/12","v":0},{"$f":"'Residential Rental'!$E$87/12*B244","v":0},0,71,0,{"$f":"-'Residential Rental'!$E$95/12","v":0},{"$f":"'Residential Rental'!$E$93/12*G244","v":0},0,71,0,0,0,0]
[72,0,{"$f":"-'Residential Rental'!$E$89/12","v":0},{"$f":"'Residential Rental'!$E$87/12*B245","v":0},0,72,0,{"$f":"-'Residential Rental'!$E$95/12","v":0},{"$f":"'Residential Rental'!$E$93/12*G245","v":0},0,72,0,0,0,0]
[73,0,{"$f":"-'Residential Rental'!$E$89/12","v":0},{"$f":"'Residential Rental'!$E$87/12*B246","v":0},0,73,0,{"$f":"-'Residential Rental'!$E$95/12","v":0},{"$f":"'Residential Rental'!$E$93/12*G246","v":0},0,73,0,0,0,0]
[74,0,{"$f":"-'Residential Rental'!$E$89/12","v":0},{"$f":"'Residential Rental'!$E$87/12*B247","v":0},0,74,0,{"$f":"-'Residential Rental'!$E$95/12","v":0},{"$f":"'Residential Rental'!$E$93/12*G247","v":0},0,74,0,0,0,0]
[75,0,{"$f":"-'Residential Rental'!$E$89/12","v":0},{"$f":"'Residential Rental'!$E$87/12*B248","v":0},0,75,0,{"$f":"-'Residential Rental'!$E$95/12","v":0},{"$f":"'Residential Rental'!$E$93/12*G248","v":0},0,75,0,0,0,0]
[76,0,{"$f":"-'Residential Rental'!$E$89/12","v":0},{"$f":"'Residential Rental'!$E$87/12*B249","v":0},0,76,0,{"$f":"-'Residential Rental'!$E$95/12","v":0},{"$f":"'Residential Rental'!$E$93/12*G249","v":0},0,76,0,0,0,0]
[77,0,{"$f":"-'Residential Rental'!$E$89/12","v":0},{"$f":"'Residential Rental'!$E$87/12*B250","v":0},0,77,0,{"$f":"-'Residential Rental'!$E$95/12","v":0},{"$f":"'Residential Rental'!$E$93/12*G250","v":0},0,77,0,0,0,0]
[78,0,{"$f":"-'Residential Rental'!$E$89/12","v":0},{"$f":"'Residential Rental'!$E$87/12*B251","v":0},0,78,0,{"$f":"-'Residential Rental'!$E$95/12","v":0},{"$f":"'Residential Rental'!$E$93/12*G251","v":0},0,78,0,0,0,0]
[79,0,{"$f":"-'Residential Rental'!$E$89/12","v":0},{"$f":"'Residential Rental'!$E$87/12*B252","v":0},0,79,0,{"$f":"-'Residential Rental'!$E$95/12","v":0},{"$f":"'Residential Rental'!$E$93/12*G252","v":0},0,79,0,0,0,0]
[80,0,{"$f":"-'Residential Rental'!$E$89/12","v":0},{"$f":"'Residential Rental'!$E$87/12*B253","v":0},0,80,0,{"$f":"-'Residential Rental'!$E$95/12","v":0},{"$f":"'Residential Rental'!$E$93/12*G253","v":0},0,80,0,0,0,0]
[81,0,{"$f":"-'Residential Rental'!$E$89/12","v":0},{"$f":"'Residential Rental'!$E$87/12*B254","v":0},0,81,0,{"$f":"-'Residential Rental'!$E$95/12","v":0},{"$f":"'Residential Rental'!$E$93/12*G254","v":0},0,81,0,0,0,0]
[82,0,{"$f":"-'Residential Rental'!$E$89/12","v":0},{"$f":"'Residential Rental'!$E$87/12*B255","v":0},0,82,0,{"$f":"-'Residential Rental'!$E$95/12","v":0},{"$f":"'Residential Rental'!$E$93/12*G255","v":0},0,82,0,0,0,0]
[83,0,{"$f":"-'Residential Rental'!$E$89/12","v":0},{"$f":"'Residential Rental'!$E$87/12*B256","v":0},0,83,0,{"$f":"-'Residential Rental'!$E$95/12","v":0},{"$f":"'Residential Rental'!$E$93/12*G256","v":0},0,83,0,0,0,0]
[84,0,{"$f":"-'Residential Rental'!$E$89/12","v":0},{"$f":"'Residential Rental'!$E$87/12*B257","v":0},0,84,0,{"$f":"-'Residential Rental'!$E$95/12","v":0},{"$f":"'Residential Rental'!$E$93/12*G257","v":0},0,84,0,0,0,0]
[85,0,{"$f":"-'Residential Rental'!$E$89/12","v":0},{"$f":"'Residential Rental'!$E$87/12*B258","v":0},0,85,0,{"$f":"-'Residential Rental'!$E$95/12","v":0},{"$f":"'Residential Rental'!$E$93/12*G258","v":0},0,85,0,0,0,0]
[86,0,{"$f":"-'Residential Rental'!$E$89/12","v":0},{"$f":"'Residential Rental'!$E$87/12*B259","v":0},0,86,0,{"$f":"-'Residential Rental'!$E$95/12","v":0},{"$f":"'Residential Rental'!$E$93/12*G259","v":0},0,86,0,0,0,0]
[87,0,{"$f":"-'Residential Rental'!$E$89/12","v":0},{"$f":"'Residential Rental'!$E$87/12*B260","v":0},0,87,0,{"$f":"-'Residential Rental'!$E$95/12","v":0},{"$f":"'Residential Rental'!$E$93/12*G260","v":0},0,87,0,0,0,0]
[88,0,{"$f":"-'Residential Rental'!$E$89/12","v":0},{"$f":"'Residential Rental'!$E$87/12*B261","v":0},0,88,0,{"$f":"-'Residential Rental'!$E$95/12","v":0},{"$f":"'Residential Rental'!$E$93/12*G261","v":0},0,88,0,0,0,0]
[89,0,{"$f":"-'Residential Rental'!$E$89/12","v":0},{"$f":"'Residential Rental'!$E$87/12*B262","v":0},0,89,0,{"$f":"-'Residential Rental'!$E$95/12","v":0},{"$f":"'Residential Rental'!$E$93/12*G262","v":0},0,89,0,0,0,0]
[90,0,{"$f":"-'Residential Rental'!$E$89/12","v":0},{"$f":"'Residential Rental'!$E$87/12*B263","v":0},0,90,0,{"$f":"-'Residential Rental'!$E$95/12","v":0},{"$f":"'Residential Rental'!$E$93/12*G263","v":0},0,90,0,0,0,0]
[91,0,{"$f":"-'Residential Rental'!$E$89/12","v":0},{"$f":"'Residential Rental'!$E$87/12*B264","v":0},0,91,0,{"$f":"-'Residential Rental'!$E$95/12","v":0},{"$f":"'Residential Rental'!$E$93/12*G264","v":0},0,91,0,0,0,0]
[92,0,{"$f":"-'Residential Rental'!$E$89/12","v":0},{"$f":"'Residential Rental'!$E$87/12*B265","v":0},0,92,0,{"$f":"-'Residential Rental'!$E$95/12","v":0},{"$f":"'Residential Rental'!$E$93/12*G265","v":0},0,92,0,0,0,0]
[93,0,{"$f":"-'Residential Rental'!$E$89/12","v":0},{"$f":"'Residential Rental'!$E$87/12*B266","v":0},0,93,0,{"$f":"-'Residential Rental'!$E$95/12","v":0},{"$f":"'Residential Rental'!$E$93/12*G266","v":0},0,93,0,0,0,0]
[94,0,{"$f":"-'Residential Rental'!$E$89/12","v":0},{"$f":"'Residential Rental'!$E$87/12*B267","v":0},0,94,0,{"$f":"-'Residential Rental'!$E$95/12","v":0},{"$f":"'Residential Rental'!$E$93/12*G267","v":0},0,94,0,0,0,0]
[95,0,{"$f":"-'Residential Rental'!$E$89/12","v":0},{"$f":"'Residential Rental'!$E$87/12*B268","v":0},0,95,0,{"$f":"-'Residential Rental'!$E$95/12","v":0},{"$f":"'Residential Rental'!$E$93/12*G268","v":0},0,95,0,0,0,0]
[96,0,{"$f":"-'Residential Rental'!$E$89/12","v":0},{"$f":"'Residential Rental'!$E$87/12*B269","v":0},0,96,0,{"$f":"-'Residential Rental'!$E$95/12","v":0},{"$f":"'Residential Rental'!$E$93/12*G269","v":0},0,96,0,0,0,0]
[97,0,{"$f":"-'Residential Rental'!$E$89/12","v":0},{"$f":"'Residential Rental'!$E$87/12*B270","v":0},0,97,0,{"$f":"-'Residential Rental'!$E$95/12","v":0},{"$f":"'Residential Rental'!$E$93/12*G270","v":0},0,97,0,0,0,0]
[98,0,{"$f":"-'Residential Rental'!$E$89/12","v":0},{"$f":"'Residential Rental'!$E$87/12*B271","v":0},0,98,0,{"$f":"-'Residential Rental'!$E$95/12","v":0},{"$f":"'Residential Rental'!$E$93/12*G271","v":0},0,98,0,0,0,0]
[99,0,{"$f":"-'Residential Rental'!$E$89/12","v":0},{"$f":"'Residential Rental'!$E$87/12*B272","v":0},0,99,0,{"$f":"-'Residential Rental'!$E$95/12","v":0},{"$f":"'Residential Rental'!$E$93/12*G272","v":0},0,99,0,0,0,0]
[100,0,{"$f":"-'Residential Rental'!$E$89/12","v":0},{"$f":"'Residential Rental'!$E$87/12*B273","v":0},0,100,0,{"$f":"-'Residential Rental'!$E$95/12","v":0},{"$f":"'Residential Rental'!$E$93/12*G273","v":0},0,100,0,0,0,0]
[101,0,{"$f":"-'Residential Rental'!$E$89/12","v":0},{"$f":"'Residential Rental'!$E$87/12*B274","v":0},0,101,0,{"$f":"-'Residential Rental'!$E$95/12","v":0},{"$f":"'Residential Rental'!$E$93/12*G274","v":0},0,101,0,0,0,0]
[102,0,{"$f":"-'Residential Rental'!$E$89/12","v":0},{"$f":"'Residential Rental'!$E$87/12*B275","v":0},0,102,0,{"$f":"-'Residential Rental'!$E$95/12","v":0},{"$f":"'Residential Rental'!$E$93/12*G275","v":0},0,102,0,0,0,0]
[103,0,{"$f":"-'Residential Rental'!$E$89/12","v":0},{"$f":"'Residential Rental'!$E$87/12*B276","v":0},0,103,0,{"$f":"-'Residential Rental'!$E$95/12","v":0},{"$f":"'Residential Rental'!$E$93/12*G276","v":0},0,103,0,0,0,0]
[104,0,{"$f":"-'Residential Rental'!$E$89/12","v":0},{"$f":"'Residential Rental'!$E$87/12*B277","v":0},0,104,0,{"$f":"-'Residential Rental'!$E$95/12","v":0},{"$f":"'Residential Rental'!$E$93/12*G277","v":0},0,104,0,0,0,0]
[105,0,{"$f":"-'Residential Rental'!$E$89/12","v":0},{"$f":"'Residential Rental'!$E$87/12*B278","v":0},0,105,0,{"$f":"-'Residential Rental'!$E$95/12","v":0},{"$f":"'Residential Rental'!$E$93/12*G278","v":0},0,105,0,0,0,0]
[106,0,{"$f":"-'Residential Rental'!$E$89/12","v":0},{"$f":"'Residential Rental'!$E$87/12*B279","v":0},0,106,0,{"$f":"-'Residential Rental'!$E$95/12","v":0},{"$f":"'Residential Rental'!$E$93/12*G279","v":0},0,106,0,0,0,0]
[107,0,{"$f":"-'Residential Rental'!$E$89/12","v":0},{"$f":"'Residential Rental'!$E$87/12*B280","v":0},0,107,0,{"$f":"-'Residential Rental'!$E$95/12","v":0},{"$f":"'Residential Rental'!$E$93/12*G280","v":0},0,107,0,0,0,0]
[108,0,{"$f":"-'Residential Rental'!$E$89/12","v":0},{"$f":"'Residential Rental'!$E$87/12*B281","v":0},0,108,0,{"$f":"-'Residential Rental'!$E$95/12","v":0},{"$f":"'Residential Rental'!$E$93/12*G281","v":0},0,108,0,0,0,0]
[109,0,{"$f":"-'Residential Rental'!$E$89/12","v":0},{"$f":"'Residential Rental'!$E$87/12*B282","v":0},0,109,0,{"$f":"-'Residential Rental'!$E$95/12","v":0},{"$f":"'Residential Rental'!$E$93/12*G282","v":0},0,109,0,0,0,0]
[110,0,{"$f":"-'Residential Rental'!$E$89/12","v":0},{"$f":"'Residential Rental'!$E$87/12*B283","v":0},0,110,0,{"$f":"-'Residential Rental'!$E$95/12","v":0},{"$f":"'Residential Rental'!$E$93/12*G283","v":0},0,110,0,0,0,0]
[111,0,{"$f":"-'Residential Rental'!$E$89/12","v":0},{"$f":"'Residential Rental'!$E$87/12*B284","v":0},0,111,0,{"$f":"-'Residential Rental'!$E$95/12","v":0},{"$f":"'Residential Rental'!$E$93/12*G284","v":0},0,111,0,0,0,0]
[112,0,{"$f":"-'Residential Rental'!$E$89/12","v":0},{"$f":"'Residential Rental'!$E$87/12*B285","v":0},0,112,0,{"$f":"-'Residential Rental'!$E$95/12","v":0},{"$f":"'Residential Rental'!$E$93/12*G285","v":0},0,112,0,0,0,0]
[113,0,{"$f":"-'Residential Rental'!$E$89/12","v":0},{"$f":"'Residential Rental'!$E$87/12*B286","v":0},0,113,0,{"$f":"-'Residential Rental'!$E$95/12","v":0},{"$f":"'Residential Rental'!$E$93/12*G286","v":0},0,113,0,0,0,0]
[114,0,{"$f":"-'Residential Rental'!$E$89/12","v":0},{"$f":"'Residential Rental'!$E$87/12*B287","v":0},0,114,0,{"$f":"-'Residential Rental'!$E$95/12","v":0},{"$f":"'Residential Rental'!$E$93/12*G287","v":0},0,114,0,0,0,0]
[115,0,{"$f":"-'Residential Rental'!$E$89/12","v":0},{"$f":"'Residential Rental'!$E$87/12*B288","v":0},0,115,0,{"$f":"-'Residential Rental'!$E$95/12","v":0},{"$f":"'Residential Rental'!$E$93/12*G288","v":0},0,115,0,0,0,0]
[116,0,{"$f":"-'Residential Rental'!$E$89/12","v":0},{"$f":"'Residential Rental'!$E$87/12*B289","v":0},0,116,0,{"$f":"-'Residential Rental'!$E$95/12","v":0},{"$f":"'Residential Rental'!$E$93/12*G289","v":0},0,116,0,0,0,0]
[117,0,{"$f":"-'Residential Rental'!$E$89/12","v":0},{"$f":"'Residential Rental'!$E$87/12*B290","v":0},0,117,0,{"$f":"-'Residential Rental'!$E$95/12","v":0},{"$f":"'Residential Rental'!$E$93/12*G290","v":0},0,117,0,0,0,0]
[118,0,{"$f":"-'Residential Rental'!$E$89/12","v":0},{"$f":"'Residential Rental'!$E$87/12*B291","v":0},0,118,0,{"$f":"-'Residential Rental'!$E$95/12","v":0},{"$f":"'Residential Rental'!$E$93/12*G291","v":0},0,118,0,0,0,0]
[119,0,{"$f":"-'Residential Rental'!$E$89/12","v":0},{"$f":"'Residential Rental'!$E$87/12*B292","v":0},0,119,0,{"$f":"-'Residential Rental'!$E$95/12","v":0},{"$f":"'Residential Rental'!$E$93/12*G292","v":0},0,119,0,0,0,0]
[120,0,{"$f":"-'Residential Rental'!$E$89/12","v":0},{"$f":"'Residential Rental'!$E$87/12*B293","v":0},0,120,0,{"$f":"-'Residential Rental'!$E$95/12","v":0},{"$f":"'Residential Rental'!$E$93/12*G293","v":0},0,120,0,0,0,0]
[121,0,{"$f":"-'Residential Rental'!$E$89/12","v":0},{"$f":"'Residential Rental'!$E$87/12*B294","v":0},0,121,0,{"$f":"-'Residential Rental'!$E$95/12","v":0},{"$f":"'Residential Rental'!$E$93/12*G294","v":0},0,121,0,0,0,0]
[122,0,{"$f":"-'Residential Rental'!$E$89/12","v":0},{"$f":"'Residential Rental'!$E$87/12*B295","v":0},0,122,0,{"$f":"-'Residential Rental'!$E$95/12","v":0},{"$f":"'Residential Rental'!$E$93/12*G295","v":0},0,122,0,0,0,0]
[123,0,{"$f":"-'Residential Rental'!$E$89/12","v":0},{"$f":"'Residential Rental'!$E$87/12*B296","v":0},0,123,0,{"$f":"-'Residential Rental'!$E$95/12","v":0},{"$f":"'Residential Rental'!$E$93/12*G296","v":0},0,123,0,0,0,0]
[124,0,{"$f":"-'Residential Rental'!$E$89/12","v":0},{"$f":"'Residential Rental'!$E$87/12*B297","v":0},0,124,0,{"$f":"-'Residential Rental'!$E$95/12","v":0},{"$f":"'Residential Rental'!$E$93/12*G297","v":0},0,124,0,0,0,0]
[125,0,{"$f":"-'Residential Rental'!$E$89/12","v":0},{"$f":"'Residential Rental'!$E$87/12*B298","v":0},0,125,0,{"$f":"-'Residential Rental'!$E$95/12","v":0},{"$f":"'Residential Rental'!$E$93/12*G298","v":0},0,125,0,0,0,0]
[126,0,{"$f":"-'Residential Rental'!$E$89/12","v":0},{"$f":"'Residential Rental'!$E$87/12*B299","v":0},0,126,0,{"$f":"-'Residential Rental'!$E$95/12","v":0},{"$f":"'Residential Rental'!$E$93/12*G299","v":0},0,126,0,0,0,0]
[127,0,{"$f":"-'Residential Rental'!$E$89/12","v":0},{"$f":"'Residential Rental'!$E$87/12*B300","v":0},0,127,0,{"$f":"-'Residential Rental'!$E$95/12","v":0},{"$f":"'Residential Rental'!$E$93/12*G300","v":0},0,127,0,0,0,0]
[128,0,{"$f":"-'Residential Rental'!$E$89/12","v":0},{"$f":"'Residential Rental'!$E$87/12*B301","v":0},0,128,0,{"$f":"-'Residential Rental'!$E$95/12","v":0},{"$f":"'Residential Rental'!$E$93/12*G301","v":0},0,128,0,0,0,0]
[129,{"$f":"B302-E303","v":0},{"$f":"-'Residential Rental'!$E$89/12","v":0},{"$f":"'Residential Rental'!$E$87/12*B302","v":0},{"$f":"C303-D303","v":0},129,{"$f":"G302-J303","v":0},{"$f":"-'Residential Rental'!$E$95/12","v":0},{"$f":"'Residential Rental'!$E$93/12*G302","v":0},{"$f":"H303-I303","v":0},129,{"$f":"G303+B303","v":0},0,0,0]
[{"$f":"A303+1","v":130},0,{"$f":"-'Residential Rental'!$E$89/12","v":0},{"$f":"'Residential Rental'!$E$87/12*B303","v":0},0,{"$f":"F303+1","v":130},0,{"$f":"-'Residential Rental'!$E$95/12","v":0},{"$f":"'Residential Rental'!$E$93/12*G303","v":0},0,{"$f":"K303+1","v":130},0,0,0,0]
[131,0,{"$f":"-'Residential Rental'!$E$89/12","v":0},{"$f":"'Residential Rental'!$E$87/12*B304","v":0},0,131,0,{"$f":"-'Residential Rental'!$E$95/12","v":0},{"$f":"'Residential Rental'!$E$93/12*G304","v":0},0,131,0,0,0,0]
[132,0,{"$f":"-'Residential Rental'!$E$89/12","v":0},{"$f":"'Residential Rental'!$E$87/12*B305","v":0},0,132,0,{"$f":"-'Residential Rental'!$E$95/12","v":0},{"$f":"'Residential Rental'!$E$93/12*G305","v":0},0,132,0,0,0,0]
[133,0,{"$f":"-'Residential Rental'!$E$89/12","v":0},{"$f":"'Residential Rental'!$E$87/12*B306","v":0},0,133,0,{"$f":"-'Residential Rental'!$E$95/12","v":0},{"$f":"'Residential Rental'!$E$93/12*G306","v":0},0,133,0,0,0,0]
[134,0,{"$f":"-'Residential Rental'!$E$89/12","v":0},{"$f":"'Residential Rental'!$E$87/12*B307","v":0},0,134,0,{"$f":"-'Residential Rental'!$E$95/12","v":0},{"$f":"'Residential Rental'!$E$93/12*G307","v":0},0,134,0,0,0,0]
[135,0,{"$f":"-'Residential Rental'!$E$89/12","v":0},{"$f":"'Residential Rental'!$E$87/12*B308","v":0},0,135,0,{"$f":"-'Residential Rental'!$E$95/12","v":0},{"$f":"'Residential Rental'!$E$93/12*G308","v":0},0,135,0,0,0,0]
[136,0,{"$f":"-'Residential Rental'!$E$89/12","v":0},{"$f":"'Residential Rental'!$E$87/12*B309","v":0},0,136,0,{"$f":"-'Residential Rental'!$E$95/12","v":0},{"$f":"'Residential Rental'!$E$93/12*G309","v":0},0,136,0,0,0,0]
[137,0,{"$f":"-'Residential Rental'!$E$89/12","v":0},{"$f":"'Residential Rental'!$E$87/12*B310","v":0},0,137,0,{"$f":"-'Residential Rental'!$E$95/12","v":0},{"$f":"'Residential Rental'!$E$93/12*G310","v":0},0,137,0,0,0,0]
[138,0,{"$f":"-'Residential Rental'!$E$89/12","v":0},{"$f":"'Residential Rental'!$E$87/12*B311","v":0},0,138,0,{"$f":"-'Residential Rental'!$E$95/12","v":0},{"$f":"'Residential Rental'!$E$93/12*G311","v":0},0,138,0,0,0,0]
[139,0,{"$f":"-'Residential Rental'!$E$89/12","v":0},{"$f":"'Residential Rental'!$E$87/12*B312","v":0},0,139,0,{"$f":"-'Residential Rental'!$E$95/12","v":0},{"$f":"'Residential Rental'!$E$93/12*G312","v":0},0,139,0,0,0,0]
[140,0,{"$f":"-'Residential Rental'!$E$89/12","v":0},{"$f":"'Residential Rental'!$E$87/12*B313","v":0},0,140,0,{"$f":"-'Residential Rental'!$E$95/12","v":0},{"$f":"'Residential Rental'!$E$93/12*G313","v":0},0,140,0,0,0,0]
[141,0,{"$f":"-'Residential Rental'!$E$89/12","v":0},{"$f":"'Residential Rental'!$E$87/12*B314","v":0},0,141,0,{"$f":"-'Residential Rental'!$E$95/12","v":0},{"$f":"'Residential Rental'!$E$93/12*G314","v":0},0,141,0,0,0,0]
[142,0,{"$f":"-'Residential Rental'!$E$89/12","v":0},{"$f":"'Residential Rental'!$E$87/12*B315","v":0},0,142,0,{"$f":"-'Residential Rental'!$E$95/12","v":0},{"$f":"'Residential Rental'!$E$93/12*G315","v":0},0,142,0,0,0,0]
[143,0,{"$f":"-'Residential Rental'!$E$89/12","v":0},{"$f":"'Residential Rental'!$E$87/12*B316","v":0},0,143,0,{"$f":"-'Residential Rental'!$E$95/12","v":0},{"$f":"'Residential Rental'!$E$93/12*G316","v":0},0,143,0,0,0,0]
[144,0,{"$f":"-'Residential Rental'!$E$89/12","v":0},{"$f":"'Residential Rental'!$E$87/12*B317","v":0},0,144,0,{"$f":"-'Residential Rental'!$E$95/12","v":0},{"$f":"'Residential Rental'!$E$93/12*G317","v":0},0,144,0,0,0,0]
[145,0,{"$f":"-'Residential Rental'!$E$89/12","v":0},{"$f":"'Residential Rental'!$E$87/12*B318","v":0},0,145,0,{"$f":"-'Residential Rental'!$E$95/12","v":0},{"$f":"'Residential Rental'!$E$93/12*G318","v":0},0,145,0,0,0,0]
[146,0,{"$f":"-'Residential Rental'!$E$89/12","v":0},{"$f":"'Residential Rental'!$E$87/12*B319","v":0},0,146,0,{"$f":"-'Residential Rental'!$E$95/12","v":0},{"$f":"'Residential Rental'!$E$93/12*G319","v":0},0,146,0,0,0,0]
[147,0,{"$f":"-'Residential Rental'!$E$89/12","v":0},{"$f":"'Residential Rental'!$E$87/12*B320","v":0},0,147,0,{"$f":"-'Residential Rental'!$E$95/12","v":0},{"$f":"'Residential Rental'!$E$93/12*G320","v":0},0,147,0,0,0,0]
[148,0,{"$f":"-'Residential Rental'!$E$89/12","v":0},{"$f":"'Residential Rental'!$E$87/12*B321","v":0},0,148,0,{"$f":"-'Residential Rental'!$E$95/12","v":0},{"$f":"'Residential Rental'!$E$93/12*G321","v":0},0,148,0,0,0,0]
[149,0,{"$f":"-'Residential Rental'!$E$89/12","v":0},{"$f":"'Residential Rental'!$E$87/12*B322","v":0},0,149,0,{"$f":"-'Residential Rental'!$E$95/12","v":0},{"$f":"'Residential Rental'!$E$93/12*G322","v":0},0,149,0,0,0,0]
[150,0,{"$f":"-'Residential Rental'!$E$89/12","v":0},{"$f":"'Residential Rental'!$E$87/12*B323","v":0},0,150,0,{"$f":"-'Residential Rental'!$E$95/12","v":0},{"$f":"'Residential Rental'!$E$93/12*G323","v":0},0,150,0,0,0,0]
[151,0,{"$f":"-'Residential Rental'!$E$89/12","v":0},{"$f":"'Residential Rental'!$E$87/12*B324","v":0},0,151,0,{"$f":"-'Residential Rental'!$E$95/12","v":0},{"$f":"'Residential Rental'!$E$93/12*G324","v":0},0,151,0,0,0,0]
[152,0,{"$f":"-'Residential Rental'!$E$89/12","v":0},{"$f":"'Residential Rental'!$E$87/12*B325","v":0},0,152,0,{"$f":"-'Residential Rental'!$E$95/12","v":0},{"$f":"'Residential Rental'!$E$93/12*G325","v":0},0,152,0,0,0,0]
[153,0,{"$f":"-'Residential Rental'!$E$89/12","v":0},{"$f":"'Residential Rental'!$E$87/12*B326","v":0},0,153,0,{"$f":"-'Residential Rental'!$E$95/12","v":0},{"$f":"'Residential Rental'!$E$93/12*G326","v":0},0,153,0,0,0,0]
[154,0,{"$f":"-'Residential Rental'!$E$89/12","v":0},{"$f":"'Residential Rental'!$E$87/12*B327","v":0},0,154,0,{"$f":"-'Residential Rental'!$E$95/12","v":0},{"$f":"'Residential Rental'!$E$93/12*G327","v":0},0,154,0,0,0,0]
[155,0,{"$f":"-'Residential Rental'!$E$89/12","v":0},{"$f":"'Residential Rental'!$E$87/12*B328","v":0},0,155,0,{"$f":"-'Residential Rental'!$E$95/12","v":0},{"$f":"'Residential Rental'!$E$93/12*G328","v":0},0,155,0,0,0,0]
[156,0,{"$f":"-'Residential Rental'!$E$89/12","v":0},{"$f":"'Residential Rental'!$E$87/12*B329","v":0},0,156,0,{"$f":"-'Residential Rental'!$E$95/12","v":0},{"$f":"'Residential Rental'!$E$93/12*G329","v":0},0,156,0,0,0,0]
[157,0,{"$f":"-'Residential Rental'!$E$89/12","v":0},{"$f":"'Residential Rental'!$E$87/12*B330","v":0},0,157,0,{"$f":"-'Residential Rental'!$E$95/12","v":0},{"$f":"'Residential Rental'!$E$93/12*G330","v":0},0,157,0,0,0,0]
[158,0,{"$f":"-'Residential Rental'!$E$89/12","v":0},{"$f":"'Residential Rental'!$E$87/12*B331","v":0},0,158,0,{"$f":"-'Residential Rental'!$E$95/12","v":0},{"$f":"'Residential Rental'!$E$93/12*G331","v":0},0,158,0,0,0,0]
[159,0,{"$f":"-'Residential Rental'!$E$89/12","v":0},{"$f":"'Residential Rental'!$E$87/12*B332","v":0},0,159,0,{"$f":"-'Residential Rental'!$E$95/12","v":0},{"$f":"'Residential Rental'!$E$93/12*G332","v":0},0,159,0,0,0,0]
[160,0,{"$f":"-'Residential Rental'!$E$89/12","v":0},{"$f":"'Residential Rental'!$E$87/12*B333","v":0},0,160,0,{"$f":"-'Residential Rental'!$E$95/12","v":0},{"$f":"'Residential Rental'!$E$93/12*G333","v":0},0,160,0,0,0,0]
[161,0,{"$f":"-'Residential Rental'!$E$89/12","v":0},{"$f":"'Residential Rental'!$E$87/12*B334","v":0},0,161,0,{"$f":"-'Residential Rental'!$E$95/12","v":0},{"$f":"'Residential Rental'!$E$93/12*G334","v":0},0,161,0,0,0,0]
[162,0,{"$f":"-'Residential Rental'!$E$89/12","v":0},{"$f":"'Residential Rental'!$E$87/12*B335","v":0},0,162,0,{"$f":"-'Residential Rental'!$E$95/12","v":0},{"$f":"'Residential Rental'!$E$93/12*G335","v":0},0,162,0,0,0,0]
[163,0,{"$f":"-'Residential Rental'!$E$89/12","v":0},{"$f":"'Residential Rental'!$E$87/12*B336","v":0},0,163,0,{"$f":"-'Residential Rental'!$E$95/12","v":0},{"$f":"'Residential Rental'!$E$93/12*G336","v":0},0,163,0,0,0,0]
[164,0,{"$f":"-'Residential Rental'!$E$89/12","v":0},{"$f":"'Residential Rental'!$E$87/12*B337","v":0},0,164,0,{"$f":"-'Residential Rental'!$E$95/12","v":0},{"$f":"'Residential Rental'!$E$93/12*G337","v":0},0,164,0,0,0,0]
[165,0,{"$f":"-'Residential Rental'!$E$89/12","v":0},{"$f":"'Residential Rental'!$E$87/12*B338","v":0},0,165,0,{"$f":"-'Residential Rental'!$E$95/12","v":0},{"$f":"'Residential Rental'!$E$93/12*G338","v":0},0,165,0,0,0,0]
[166,0,{"$f":"-'Residential Rental'!$E$89/12","v":0},{"$f":"'Residential Rental'!$E$87/12*B339","v":0},0,166,0,{"$f":"-'Residential Rental'!$E$95/12","v":0},{"$f":"'Residential Rental'!$E$93/12*G339","v":0},0,166,0,0,0,0]
[167,0,{"$f":"-'Residential Rental'!$E$89/12","v":0},{"$f":"'Residential Rental'!$E$87/12*B340","v":0},0,167,0,{"$f":"-'Residential Rental'!$E$95/12","v":0},{"$f":"'Residential Rental'!$E$93/12*G340","v":0},0,167,0,0,0,0]
[168,0,{"$f":"-'Residential Rental'!$E$89/12","v":0},{"$f":"'Residential Rental'!$E$87/12*B341","v":0},0,168,0,{"$f":"-'Residential Rental'!$E$95/12","v":0},{"$f":"'Residential Rental'!$E$93/12*G341","v":0},0,168,0,0,0,0]
[169,0,{"$f":"-'Residential Rental'!$E$89/12","v":0},{"$f":"'Residential Rental'!$E$87/12*B342","v":0},0,169,0,{"$f":"-'Residential Rental'!$E$95/12","v":0},{"$f":"'Residential Rental'!$E$93/12*G342","v":0},0,169,0,0,0,0]
[170,0,{"$f":"-'Residential Rental'!$E$89/12","v":0},{"$f":"'Residential Rental'!$E$87/12*B343","v":0},0,170,0,{"$f":"-'Residential Rental'!$E$95/12","v":0},{"$f":"'Residential Rental'!$E$93/12*G343","v":0},0,170,0,0,0,0]
[171,0,{"$f":"-'Residential Rental'!$E$89/12","v":0},{"$f":"'Residential Rental'!$E$87/12*B344","v":0},0,171,0,{"$f":"-'Residential Rental'!$E$95/12","v":0},{"$f":"'Residential Rental'!$E$93/12*G344","v":0},0,171,0,0,0,0]
[172,0,{"$f":"-'Residential Rental'!$E$89/12","v":0},{"$f":"'Residential Rental'!$E$87/12*B345","v":0},0,172,0,{"$f":"-'Residential Rental'!$E$95/12","v":0},{"$f":"'Residential Rental'!$E$93/12*G345","v":0},0,172,0,0,0,0]
[173,0,{"$f":"-'Residential Rental'!$E$89/12","v":0},{"$f":"'Residential Rental'!$E$87/12*B346","v":0},0,173,0,{"$f":"-'Residential Rental'!$E$95/12","v":0},{"$f":"'Residential Rental'!$E$93/12*G346","v":0},0,173,0,0,0,0]
[174,0,{"$f":"-'Residential Rental'!$E$89/12","v":0},{"$f":"'Residential Rental'!$E$87/12*B347","v":0},0,174,0,{"$f":"-'Residential Rental'!$E$95/12","v":0},{"$f":"'Residential Rental'!$E$93/12*G347","v":0},0,174,0,0,0,0]
[175,0,{"$f":"-'Residential Rental'!$E$89/12","v":0},{"$f":"'Residential Rental'!$E$87/12*B348","v":0},0,175,0,{"$f":"-'Residential Rental'!$E$95/12","v":0},{"$f":"'Residential Rental'!$E$93/12*G348","v":0},0,175,0,0,0,0]
[176,0,{"$f":"-'Residential Rental'!$E$89/12","v":0},{"$f":"'Residential Rental'!$E$87/12*B349","v":0},0,176,0,{"$f":"-'Residential Rental'!$E$95/12","v":0},{"$f":"'Residential Rental'!$E$93/12*G349","v":0},0,176,0,0,0,0]
[177,0,{"$f":"-'Residential Rental'!$E$89/12","v":0},{"$f":"'Residential Rental'!$E$87/12*B350","v":0},0,177,0,{"$f":"-'Residential Rental'!$E$95/12","v":0},{"$f":"'Residential Rental'!$E$93/12*G350","v":0},0,177,0,0,0,0]
[178,0,{"$f":"-'Residential Rental'!$E$89/12","v":0},{"$f":"'Residential Rental'!$E$87/12*B351","v":0},0,178,0,{"$f":"-'Residential Rental'!$E$95/12","v":0},{"$f":"'Residential Rental'!$E$93/12*G351","v":0},0,178,0,0,0,0]
[179,0,{"$f":"-'Residential Rental'!$E$89/12","v":0},{"$f":"'Residential Rental'!$E$87/12*B352","v":0},0,179,0,{"$f":"-'Residential Rental'!$E$95/12","v":0},{"$f":"'Residential Rental'!$E$93/12*G352","v":0},0,179,0,0,0,0]
[180,0,{"$f":"-'Residential Rental'!$E$89/12","v":0},{"$f":"'Residential Rental'!$E$87/12*B353","v":0},0,180,0,{"$f":"-'Residential Rental'!$E$95/12","v":0},{"$f":"'Residential Rental'!$E$93/12*G353","v":0},0,180,0,0,0,0]
[181,0,{"$f":"-'Residential Rental'!$E$89/12","v":0},{"$f":"'Residential Rental'!$E$87/12*B354","v":0},0,181,0,{"$f":"-'Residential Rental'!$E$95/12","v":0},{"$f":"'Residential Rental'!$E$93/12*G354","v":0},0,181,0,0,0,0]
[182,0,{"$f":"-'Residential Rental'!$E$89/12","v":0},{"$f":"'Residential Rental'!$E$87/12*B355","v":0},0,182,0,{"$f":"-'Residential Rental'!$E$95/12","v":0},{"$f":"'Residential Rental'!$E$93/12*G355","v":0},0,182,0,0,0,0]
[183,0,{"$f":"-'Residential Rental'!$E$89/12","v":0},{"$f":"'Residential Rental'!$E$87/12*B356","v":0},0,183,0,{"$f":"-'Residential Rental'!$E$95/12","v":0},{"$f":"'Residential Rental'!$E$93/12*G356","v":0},0,183,0,0,0,0]
[184,0,{"$f":"-'Residential Rental'!$E$89/12","v":0},{"$f":"'Residential Rental'!$E$87/12*B357","v":0},0,184,0,{"$f":"-'Residential Rental'!$E$95/12","v":0},{"$f":"'Residential Rental'!$E$93/12*G357","v":0},0,184,0,0,0,0]
[185,0,{"$f":"-'Residential Rental'!$E$89/12","v":0},{"$f":"'Residential Rental'!$E$87/12*B358","v":0},0,185,0,{"$f":"-'Residential Rental'!$E$95/12","v":0},{"$f":"'Residential Rental'!$E$93/12*G358","v":0},0,185,0,0,0,0]
[186,0,{"$f":"-'Residential Rental'!$E$89/12","v":0},{"$f":"'Residential Rental'!$E$87/12*B359","v":0},0,186,0,{"$f":"-'Residential Rental'!$E$95/12","v":0},{"$f":"'Residential Rental'!$E$93/12*G359","v":0},0,186,0,0,0,0]
[187,0,{"$f":"-'Residential Rental'!$E$89/12","v":0},{"$f":"'Residential Rental'!$E$87/12*B360","v":0},0,187,0,{"$f":"-'Residential Rental'!$E$95/12","v":0},{"$f":"'Residential Rental'!$E$93/12*G360","v":0},0,187,0,0,0,0]
[188,0,{"$f":"-'Residential Rental'!$E$89/12","v":0},{"$f":"'Residential Rental'!$E$87/12*B361","v":0},0,188,0,{"$f":"-'Residential Rental'!$E$95/12","v":0},{"$f":"'Residential Rental'!$E$93/12*G361","v":0},0,188,0,0,0,0]
[189,0,{"$f":"-'Residential Rental'!$E$89/12","v":0},{"$f":"'Residential Rental'!$E$87/12*B362","v":0},0,189,0,{"$f":"-'Residential Rental'!$E$95/12","v":0},{"$f":"'Residential Rental'!$E$93/12*G362","v":0},0,189,0,0,0,0]
[190,0,{"$f":"-'Residential Rental'!$E$89/12","v":0},{"$f":"'Residential Rental'!$E$87/12*B363","v":0},0,190,0,{"$f":"-'Residential Rental'!$E$95/12","v":0},{"$f":"'Residential Rental'!$E$93/12*G363","v":0},0,190,0,0,0,0]
[191,0,{"$f":"-'Residential Rental'!$E$89/12","v":0},{"$f":"'Residential Rental'!$E$87/12*B364","v":0},0,191,0,{"$f":"-'Residential Rental'!$E$95/12","v":0},{"$f":"'Residential Rental'!$E$93/12*G364","v":0},0,191,0,0,0,0]
[192,0,{"$f":"-'Residential Rental'!$E$89/12","v":0},{"$f":"'Residential Rental'!$E$87/12*B365","v":0},0,192,0,{"$f":"-'Residential Rental'!$E$95/12","v":0},{"$f":"'Residential Rental'!$E$93/12*G365","v":0},0,192,0,0,0,{"$f":"J366+E366","v":0}]
[193,{"$f":"B366-E367","v":0},{"$f":"-'Residential Rental'!$E$89/12","v":0},{"$f":"'Residential Rental'!$E$87/12*B366","v":0},{"$f":"C367-D367","v":0},193,{"$f":"G366-J367","v":0},{"$f":"-'Residential Rental'!$E$95/12","v":0},{"$f":"'Residential Rental'!$E$93/12*G366","v":0},{"$f":"H367-I367","v":0},193,{"$f":"G367+B367","v":0},0,0,0]
[{"$f":"A367+1","v":194},0,{"$f":"-'Residential Rental'!$E$89/12","v":0},{"$f":"'Residential Rental'!$E$87/12*B367","v":0},0,{"$f":"F367+1","v":194},0,{"$f":"-'Residential Rental'!$E$95/12","v":0},{"$f":"'Residential Rental'!$E$93/12*G367","v":0},0,{"$f":"K367+1","v":194},0,0,0,0]
[195,0,{"$f":"-'Residential Rental'!$E$89/12","v":0},{"$f":"'Residential Rental'!$E$87/12*B368","v":0},0,195,0,{"$f":"-'Residential Rental'!$E$95/12","v":0},{"$f":"'Residential Rental'!$E$93/12*G368","v":0},0,195,0,0,0,0]
[196,0,{"$f":"-'Residential Rental'!$E$89/12","v":0},{"$f":"'Residential Rental'!$E$87/12*B369","v":0},0,196,0,{"$f":"-'Residential Rental'!$E$95/12","v":0},{"$f":"'Residential Rental'!$E$93/12*G369","v":0},0,196,0,0,0,0]
[197,0,{"$f":"-'Residential Rental'!$E$89/12","v":0},{"$f":"'Residential Rental'!$E$87/12*B370","v":0},0,197,0,{"$f":"-'Residential Rental'!$E$95/12","v":0},{"$f":"'Residential Rental'!$E$93/12*G370","v":0},0,197,0,0,0,0]
[198,0,{"$f":"-'Residential Rental'!$E$89/12","v":0},{"$f":"'Residential Rental'!$E$87/12*B371","v":0},0,198,0,{"$f":"-'Residential Rental'!$E$95/12","v":0},{"$f":"'Residential Rental'!$E$93/12*G371","v":0},0,198,0,0,0,0]
[199,0,{"$f":"-'Residential Rental'!$E$89/12","v":0},{"$f":"'Residential Rental'!$E$87/12*B372","v":0},0,199,0,{"$f":"-'Residential Rental'!$E$95/12","v":0},{"$f":"'Residential Rental'!$E$93/12*G372","v":0},0,199,0,0,0,0]
[200,0,{"$f":"-'Residential Rental'!$E$89/12","v":0},{"$f":"'Residential Rental'!$E$87/12*B373","v":0},0,200,0,{"$f":"-'Residential Rental'!$E$95/12","v":0},{"$f":"'Residential Rental'!$E$93/12*G373","v":0},0,200,0,0,0,0]
[201,0,{"$f":"-'Residential Rental'!$E$89/12","v":0},{"$f":"'Residential Rental'!$E$87/12*B374","v":0},0,201,0,{"$f":"-'Residential Rental'!$E$95/12","v":0},{"$f":"'Residential Rental'!$E$93/12*G374","v":0},0,201,0,0,0,0]
[202,0,{"$f":"-'Residential Rental'!$E$89/12","v":0},{"$f":"'Residential Rental'!$E$87/12*B375","v":0},0,202,0,{"$f":"-'Residential Rental'!$E$95/12","v":0},{"$f":"'Residential Rental'!$E$93/12*G375","v":0},0,202,0,0,0,0]
[203,0,{"$f":"-'Residential Rental'!$E$89/12","v":0},{"$f":"'Residential Rental'!$E$87/12*B376","v":0},0,203,0,{"$f":"-'Residential Rental'!$E$95/12","v":0},{"$f":"'Residential Rental'!$E$93/12*G376","v":0},0,203,0,0,0,0]
[204,0,{"$f":"-'Residential Rental'!$E$89/12","v":0},{"$f":"'Residential Rental'!$E$87/12*B377","v":0},0,204,0,{"$f":"-'Residential Rental'!$E$95/12","v":0},{"$f":"'Residential Rental'!$E$93/12*G377","v":0},0,204,0,0,0,0]
[205,0,{"$f":"-'Residential Rental'!$E$89/12","v":0},{"$f":"'Residential Rental'!$E$87/12*B378","v":0},0,205,0,{"$f":"-'Residential Rental'!$E$95/12","v":0},{"$f":"'Residential Rental'!$E$93/12*G378","v":0},0,205,0,0,0,0]
[206,0,{"$f":"-'Residential Rental'!$E$89/12","v":0},{"$f":"'Residential Rental'!$E$87/12*B379","v":0},0,206,0,{"$f":"-'Residential Rental'!$E$95/12","v":0},{"$f":"'Residential Rental'!$E$93/12*G379","v":0},0,206,0,0,0,0]
[207,0,{"$f":"-'Residential Rental'!$E$89/12","v":0},{"$f":"'Residential Rental'!$E$87/12*B380","v":0},0,207,0,{"$f":"-'Residential Rental'!$E$95/12","v":0},{"$f":"'Residential Rental'!$E$93/12*G380","v":0},0,207,0,0,0,0]
[208,0,{"$f":"-'Residential Rental'!$E$89/12","v":0},{"$f":"'Residential Rental'!$E$87/12*B381","v":0},0,208,0,{"$f":"-'Residential Rental'!$E$95/12","v":0},{"$f":"'Residential Rental'!$E$93/12*G381","v":0},0,208,0,0,0,0]
[209,0,{"$f":"-'Residential Rental'!$E$89/12","v":0},{"$f":"'Residential Rental'!$E$87/12*B382","v":0},0,209,0,{"$f":"-'Residential Rental'!$E$95/12","v":0},{"$f":"'Residential Rental'!$E$93/12*G382","v":0},0,209,0,0,0,0]
[210,0,{"$f":"-'Residential Rental'!$E$89/12","v":0},{"$f":"'Residential Rental'!$E$87/12*B383","v":0},0,210,0,{"$f":"-'Residential Rental'!$E$95/12","v":0},{"$f":"'Residential Rental'!$E$93/12*G383","v":0},0,210,0,0,0,0]
[211,0,{"$f":"-'Residential Rental'!$E$89/12","v":0},{"$f":"'Residential Rental'!$E$87/12*B384","v":0},0,211,0,{"$f":"-'Residential Rental'!$E$95/12","v":0},{"$f":"'Residential Rental'!$E$93/12*G384","v":0},0,211,0,0,0,0]
[212,0,{"$f":"-'Residential Rental'!$E$89/12","v":0},{"$f":"'Residential Rental'!$E$87/12*B385","v":0},0,212,0,{"$f":"-'Residential Rental'!$E$95/12","v":0},{"$f":"'Residential Rental'!$E$93/12*G385","v":0},0,212,0,0,0,0]
[213,0,{"$f":"-'Residential Rental'!$E$89/12","v":0},{"$f":"'Residential Rental'!$E$87/12*B386","v":0},0,213,0,{"$f":"-'Residential Rental'!$E$95/12","v":0},{"$f":"'Residential Rental'!$E$93/12*G386","v":0},0,213,0,0,0,0]
[214,0,{"$f":"-'Residential Rental'!$E$89/12","v":0},{"$f":"'Residential Rental'!$E$87/12*B387","v":0},0,214,0,{"$f":"-'Residential Rental'!$E$95/12","v":0},{"$f":"'Residential Rental'!$E$93/12*G387","v":0},0,214,0,0,0,0]
[215,0,{"$f":"-'Residential Rental'!$E$89/12","v":0},{"$f":"'Residential Rental'!$E$87/12*B388","v":0},0,215,0,{"$f":"-'Residential Rental'!$E$95/12","v":0},{"$f":"'Residential Rental'!$E$93/12*G388","v":0},0,215,0,0,0,0]
[216,0,{"$f":"-'Residential Rental'!$E$89/12","v":0},{"$f":"'Residential Rental'!$E$87/12*B389","v":0},0,216,0,{"$f":"-'Residential Rental'!$E$95/12","v":0},{"$f":"'Residential Rental'!$E$93/12*G389","v":0},0,216,0,0,0,0]
[217,0,{"$f":"-'Residential Rental'!$E$89/12","v":0},{"$f":"'Residential Rental'!$E$87/12*B390","v":0},0,217,0,{"$f":"-'Residential Rental'!$E$95/12","v":0},{"$f":"'Residential Rental'!$E$93/12*G390","v":0},0,217,0,0,0,0]
[218,0,{"$f":"-'Residential Rental'!$E$89/12","v":0},{"$f":"'Residential Rental'!$E$87/12*B391","v":0},0,218,0,{"$f":"-'Residential Rental'!$E$95/12","v":0},{"$f":"'Residential Rental'!$E$93/12*G391","v":0},0,218,0,0,0,0]
[219,0,{"$f":"-'Residential Rental'!$E$89/12","v":0},{"$f":"'Residential Rental'!$E$87/12*B392","v":0},0,219,0,{"$f":"-'Residential Rental'!$E$95/12","v":0},{"$f":"'Residential Rental'!$E$93/12*G392","v":0},0,219,0,0,0,0]
[220,0,{"$f":"-'Residential Rental'!$E$89/12","v":0},{"$f":"'Residential Rental'!$E$87/12*B393","v":0},0,220,0,{"$f":"-'Residential Rental'!$E$95/12","v":0},{"$f":"'Residential Rental'!$E$93/12*G393","v":0},0,220,0,0,0,0]
[221,0,{"$f":"-'Residential Rental'!$E$89/12","v":0},{"$f":"'Residential Rental'!$E$87/12*B394","v":0},0,221,0,{"$f":"-'Residential Rental'!$E$95/12","v":0},{"$f":"'Residential Rental'!$E$93/12*G394","v":0},0,221,0,0,0,0]
[222,0,{"$f":"-'Residential Rental'!$E$89/12","v":0},{"$f":"'Residential Rental'!$E$87/12*B395","v":0},0,222,0,{"$f":"-'Residential Rental'!$E$95/12","v":0},{"$f":"'Residential Rental'!$E$93/12*G395","v":0},0,222,0,0,0,0]
[223,0,{"$f":"-'Residential Rental'!$E$89/12","v":0},{"$f":"'Residential Rental'!$E$87/12*B396","v":0},0,223,0,{"$f":"-'Residential Rental'!$E$95/12","v":0},{"$f":"'Residential Rental'!$E$93/12*G396","v":0},0,223,0,0,0,0]
[224,0,{"$f":"-'Residential Rental'!$E$89/12","v":0},{"$f":"'Residential Rental'!$E$87/12*B397","v":0},0,224,0,{"$f":"-'Residential Rental'!$E$95/12","v":0},{"$f":"'Residential Rental'!$E$93/12*G397","v":0},0,224,0,0,0,0]
[225,0,{"$f":"-'Residential Rental'!$E$89/12","v":0},{"$f":"'Residential Rental'!$E$87/12*B398","v":0},0,225,0,{"$f":"-'Residential Rental'!$E$95/12","v":0},{"$f":"'Residential Rental'!$E$93/12*G398","v":0},0,225,0,0,0,0]
[226,0,{"$f":"-'Residential Rental'!$E$89/12","v":0},{"$f":"'Residential Rental'!$E$87/12*B399","v":0},0,226,0,{"$f":"-'Residential Rental'!$E$95/12","v":0},{"$f":"'Residential Rental'!$E$93/12*G399","v":0},0,226,0,0,0,0]
[227,0,{"$f":"-'Residential Rental'!$E$89/12","v":0},{"$f":"'Residential Rental'!$E$87/12*B400","v":0},0,227,0,{"$f":"-'Residential Rental'!$E$95/12","v":0},{"$f":"'Residential Rental'!$E$93/12*G400","v":0},0,227,0,0,0,0]
[228,0,{"$f":"-'Residential Rental'!$E$89/12","v":0},{"$f":"'Residential Rental'!$E$87/12*B401","v":0},0,228,0,{"$f":"-'Residential Rental'!$E$95/12","v":0},{"$f":"'Residential Rental'!$E$93/12*G401","v":0},0,228,0,0,0,0]
[229,0,{"$f":"-'Residential Rental'!$E$89/12","v":0},{"$f":"'Residential Rental'!$E$87/12*B402","v":0},0,229,0,{"$f":"-'Residential Rental'!$E$95/12","v":0},{"$f":"'Residential Rental'!$E$93/12*G402","v":0},0,229,0,0,0,0]
[230,0,{"$f":"-'Residential Rental'!$E$89/12","v":0},{"$f":"'Residential Rental'!$E$87/12*B403","v":0},0,230,0,{"$f":"-'Residential Rental'!$E$95/12","v":0},{"$f":"'Residential Rental'!$E$93/12*G403","v":0},0,230,0,0,0,0]
[231,0,{"$f":"-'Residential Rental'!$E$89/12","v":0},{"$f":"'Residential Rental'!$E$87/12*B404","v":0},0,231,0,{"$f":"-'Residential Rental'!$E$95/12","v":0},{"$f":"'Residential Rental'!$E$93/12*G404","v":0},0,231,0,0,0,0]
[232,0,{"$f":"-'Residential Rental'!$E$89/12","v":0},{"$f":"'Residential Rental'!$E$87/12*B405","v":0},0,232,0,{"$f":"-'Residential Rental'!$E$95/12","v":0},{"$f":"'Residential Rental'!$E$93/12*G405","v":0},0,232,0,0,0,0]
[233,0,{"$f":"-'Residential Rental'!$E$89/12","v":0},{"$f":"'Residential Rental'!$E$87/12*B406","v":0},0,233,0,{"$f":"-'Residential Rental'!$E$95/12","v":0},{"$f":"'Residential Rental'!$E$93/12*G406","v":0},0,233,0,0,0,0]
[234,0,{"$f":"-'Residential Rental'!$E$89/12","v":0},{"$f":"'Residential Rental'!$E$87/12*B407","v":0},0,234,0,{"$f":"-'Residential Rental'!$E$95/12","v":0},{"$f":"'Residential Rental'!$E$93/12*G407","v":0},0,234,0,0,0,0]
[235,0,{"$f":"-'Residential Rental'!$E$89/12","v":0},{"$f":"'Residential Rental'!$E$87/12*B408","v":0},0,235,0,{"$f":"-'Residential Rental'!$E$95/12","v":0},{"$f":"'Residential Rental'!$E$93/12*G408","v":0},0,235,0,0,0,0]
[236,0,{"$f":"-'Residential Rental'!$E$89/12","v":0},{"$f":"'Residential Rental'!$E$87/12*B409","v":0},0,236,0,{"$f":"-'Residential Rental'!$E$95/12","v":0},{"$f":"'Residential Rental'!$E$93/12*G409","v":0},0,236,0,0,0,0]
[237,0,{"$f":"-'Residential Rental'!$E$89/12","v":0},{"$f":"'Residential Rental'!$E$87/12*B410","v":0},0,237,0,{"$f":"-'Residential Rental'!$E$95/12","v":0},{"$f":"'Residential Rental'!$E$93/12*G410","v":0},0,237,0,0,0,0]
[238,0,{"$f":"-'Residential Rental'!$E$89/12","v":0},{"$f":"'Residential Rental'!$E$87/12*B411","v":0},0,238,0,{"$f":"-'Residential Rental'!$E$95/12","v":0},{"$f":"'Residential Rental'!$E$93/12*G411","v":0},0,238,0,0,0,0]
[239,0,{"$f":"-'Residential Rental'!$E$89/12","v":0},{"$f":"'Residential Rental'!$E$87/12*B412","v":0},0,239,0,{"$f":"-'Residential Rental'!$E$95/12","v":0},{"$f":"'Residential Rental'!$E$93/12*G412","v":0},0,239,0,0,0,0]
[240,0,{"$f":"-'Residential Rental'!$E$89/12","v":0},{"$f":"'Residential Rental'!$E$87/12*B413","v":0},0,240,0,{"$f":"-'Residential Rental'!$E$95/12","v":0},{"$f":"'Residential Rental'!$E$93/12*G413","v":0},0,240,0,0,0,0]
[241,0,{"$f":"-'Residential Rental'!$E$89/12","v":0},{"$f":"'Residential Rental'!$E$87/12*B414","v":0},0,241,0,{"$f":"-'Residential Rental'!$E$95/12","v":0},{"$f":"'Residential Rental'!$E$93/12*G414","v":0},0,241,0,0,0,0]
[242,0,{"$f":"-'Residential Rental'!$E$89/12","v":0},{"$f":"'Residential Rental'!$E$87/12*B415","v":0},0,242,0,{"$f":"-'Residential Rental'!$E$95/12","v":0},{"$f":"'Residential Rental'!$E$93/12*G415","v":0},0,242,0,0,0,0]
[243,0,{"$f":"-'Residential Rental'!$E$89/12","v":0},{"$f":"'Residential Rental'!$E$87/12*B416","v":0},0,243,0,{"$f":"-'Residential Rental'!$E$95/12","v":0},{"$f":"'Residential Rental'!$E$93/12*G416","v":0},0,243,0,0,0,0]
[244,0,{"$f":"-'Residential Rental'!$E$89/12","v":0},{"$f":"'Residential Rental'!$E$87/12*B417","v":0},0,244,0,{"$f":"-'Residential Rental'!$E$95/12","v":0},{"$f":"'Residential Rental'!$E$93/12*G417","v":0},0,244,0,0,0,0]
[245,0,{"$f":"-'Residential Rental'!$E$89/12","v":0},{"$f":"'Residential Rental'!$E$87/12*B418","v":0},0,245,0,{"$f":"-'Residential Rental'!$E$95/12","v":0},{"$f":"'Residential Rental'!$E$93/12*G418","v":0},0,245,0,0,0,0]
[246,0,{"$f":"-'Residential Rental'!$E$89/12","v":0},{"$f":"'Residential Rental'!$E$87/12*B419","v":0},0,246,0,{"$f":"-'Residential Rental'!$E$95/12","v":0},{"$f":"'Residential Rental'!$E$93/12*G419","v":0},0,246,0,0,0,0]
[247,0,{"$f":"-'Residential Rental'!$E$89/12","v":0},{"$f":"'Residential Rental'!$E$87/12*B420","v":0},0,247,0,{"$f":"-'Residential Rental'!$E$95/12","v":0},{"$f":"'Residential Rental'!$E$93/12*G420","v":0},0,247,0,0,0,0]
[248,0,{"$f":"-'Residential Rental'!$E$89/12","v":0},{"$f":"'Residential Rental'!$E$87/12*B421","v":0},0,248,0,{"$f":"-'Residential Rental'!$E$95/12","v":0},{"$f":"'Residential Rental'!$E$93/12*G421","v":0},0,248,0,0,0,0]
[249,0,{"$f":"-'Residential Rental'!$E$89/12","v":0},{"$f":"'Residential Rental'!$E$87/12*B422","v":0},0,249,0,{"$f":"-'Residential Rental'!$E$95/12","v":0},{"$f":"'Residential Rental'!$E$93/12*G422","v":0},0,249,0,0,0,0]
[250,0,{"$f":"-'Residential Rental'!$E$89/12","v":0},{"$f":"'Residential Rental'!$E$87/12*B423","v":0},0,250,0,{"$f":"-'Residential Rental'!$E$95/12","v":0},{"$f":"'Residential Rental'!$E$93/12*G423","v":0},0,250,0,0,0,0]
[251,0,{"$f":"-'Residential Rental'!$E$89/12","v":0},{"$f":"'Residential Rental'!$E$87/12*B424","v":0},0,251,0,{"$f":"-'Residential Rental'!$E$95/12","v":0},{"$f":"'Residential Rental'!$E$93/12*G424","v":0},0,251,0,0,0,0]
[252,0,{"$f":"-'Residential Rental'!$E$89/12","v":0},{"$f":"'Residential Rental'!$E$87/12*B425","v":0},0,252,0,{"$f":"-'Residential Rental'!$E$95/12","v":0},{"$f":"'Residential Rental'!$E$93/12*G425","v":0},0,252,0,0,0,0]
[253,0,{"$f":"-'Residential Rental'!$E$89/12","v":0},{"$f":"'Residential Rental'!$E$87/12*B426","v":0},0,253,0,{"$f":"-'Residential Rental'!$E$95/12","v":0},{"$f":"'Residential Rental'!$E$93/12*G426","v":0},0,253,0,0,0,0]
[254,0,{"$f":"-'Residential Rental'!$E$89/12","v":0},{"$f":"'Residential Rental'!$E$87/12*B427","v":0},0,254,0,{"$f":"-'Residential Rental'!$E$95/12","v":0},{"$f":"'Residential Rental'!$E$93/12*G427","v":0},0,254,0,0,0,0]
[255,0,{"$f":"-'Residential Rental'!$E$89/12","v":0},{"$f":"'Residential Rental'!$E$87/12*B428","v":0},0,255,0,{"$f":"-'Residential Rental'!$E$95/12","v":0},{"$f":"'Residential Rental'!$E$93/12*G428","v":0},0,255,0,0,0,0]
[256,0,{"$f":"-'Residential Rental'!$E$89/12","v":0},{"$f":"'Residential Rental'!$E$87/12*B429","v":0},0,256,0,{"$f":"-'Residential Rental'!$E$95/12","v":0},{"$f":"'Residential Rental'!$E$93/12*G429","v":0},0,256,0,0,0,0]
[257,{"$f":"B430-E431","v":0},{"$f":"-'Residential Rental'!$E$89/12","v":0},{"$f":"'Residential Rental'!$E$87/12*B430","v":0},{"$f":"C431-D431","v":0},257,{"$f":"G430-J431","v":0},{"$f":"-'Residential Rental'!$E$95/12","v":0},{"$f":"'Residential Rental'!$E$93/12*G430","v":0},{"$f":"H431-I431","v":0},257,{"$f":"G431+B431","v":0},0,0,0]
[{"$f":"A431+1","v":258},0,{"$f":"-'Residential Rental'!$E$89/12","v":0},{"$f":"'Residential Rental'!$E$87/12*B431","v":0},0,{"$f":"F431+1","v":258},0,{"$f":"-'Residential Rental'!$E$95/12","v":0},{"$f":"'Residential Rental'!$E$93/12*G431","v":0},0,{"$f":"K431+1","v":258},0,0,0,0]
[259,0,{"$f":"-'Residential Rental'!$E$89/12","v":0},{"$f":"'Residential Rental'!$E$87/12*B432","v":0},0,259,0,{"$f":"-'Residential Rental'!$E$95/12","v":0},{"$f":"'Residential Rental'!$E$93/12*G432","v":0},0,259,0,0,0,0]
[260,0,{"$f":"-'Residential Rental'!$E$89/12","v":0},{"$f":"'Residential Rental'!$E$87/12*B433","v":0},0,260,0,{"$f":"-'Residential Rental'!$E$95/12","v":0},{"$f":"'Residential Rental'!$E$93/12*G433","v":0},0,260,0,0,0,0]
[261,0,{"$f":"-'Residential Rental'!$E$89/12","v":0},{"$f":"'Residential Rental'!$E$87/12*B434","v":0},0,261,0,{"$f":"-'Residential Rental'!$E$95/12","v":0},{"$f":"'Residential Rental'!$E$93/12*G434","v":0},0,261,0,0,0,0]
[262,0,{"$f":"-'Residential Rental'!$E$89/12","v":0},{"$f":"'Residential Rental'!$E$87/12*B435","v":0},0,262,0,{"$f":"-'Residential Rental'!$E$95/12","v":0},{"$f":"'Residential Rental'!$E$93/12*G435","v":0},0,262,0,0,0,0]
[263,0,{"$f":"-'Residential Rental'!$E$89/12","v":0},{"$f":"'Residential Rental'!$E$87/12*B436","v":0},0,263,0,{"$f":"-'Residential Rental'!$E$95/12","v":0},{"$f":"'Residential Rental'!$E$93/12*G436","v":0},0,263,0,0,0,0]
[264,0,{"$f":"-'Residential Rental'!$E$89/12","v":0},{"$f":"'Residential Rental'!$E$87/12*B437","v":0},0,264,0,{"$f":"-'Residential Rental'!$E$95/12","v":0},{"$f":"'Residential Rental'!$E$93/12*G437","v":0},0,264,0,0,0,0]
[265,0,{"$f":"-'Residential Rental'!$E$89/12","v":0},{"$f":"'Residential Rental'!$E$87/12*B438","v":0},0,265,0,{"$f":"-'Residential Rental'!$E$95/12","v":0},{"$f":"'Residential Rental'!$E$93/12*G438","v":0},0,265,0,0,0,0]
[266,0,{"$f":"-'Residential Rental'!$E$89/12","v":0},{"$f":"'Residential Rental'!$E$87/12*B439","v":0},0,266,0,{"$f":"-'Residential Rental'!$E$95/12","v":0},{"$f":"'Residential Rental'!$E$93/12*G439","v":0},0,266,0,0,0,0]
[267,0,{"$f":"-'Residential Rental'!$E$89/12","v":0},{"$f":"'Residential Rental'!$E$87/12*B440","v":0},0,267,0,{"$f":"-'Residential Rental'!$E$95/12","v":0},{"$f":"'Residential Rental'!$E$93/12*G440","v":0},0,267,0,0,0,0]
[268,0,{"$f":"-'Residential Rental'!$E$89/12","v":0},{"$f":"'Residential Rental'!$E$87/12*B441","v":0},0,268,0,{"$f":"-'Residential Rental'!$E$95/12","v":0},{"$f":"'Residential Rental'!$E$93/12*G441","v":0},0,268,0,0,0,0]
[269,0,{"$f":"-'Residential Rental'!$E$89/12","v":0},{"$f":"'Residential Rental'!$E$87/12*B442","v":0},0,269,0,{"$f":"-'Residential Rental'!$E$95/12","v":0},{"$f":"'Residential Rental'!$E$93/12*G442","v":0},0,269,0,0,0,0]
[270,0,{"$f":"-'Residential Rental'!$E$89/12","v":0},{"$f":"'Residential Rental'!$E$87/12*B443","v":0},0,270,0,{"$f":"-'Residential Rental'!$E$95/12","v":0},{"$f":"'Residential Rental'!$E$93/12*G443","v":0},0,270,0,0,0,0]
[271,0,{"$f":"-'Residential Rental'!$E$89/12","v":0},{"$f":"'Residential Rental'!$E$87/12*B444","v":0},0,271,0,{"$f":"-'Residential Rental'!$E$95/12","v":0},{"$f":"'Residential Rental'!$E$93/12*G444","v":0},0,271,0,0,0,0]
[272,0,{"$f":"-'Residential Rental'!$E$89/12","v":0},{"$f":"'Residential Rental'!$E$87/12*B445","v":0},0,272,0,{"$f":"-'Residential Rental'!$E$95/12","v":0},{"$f":"'Residential Rental'!$E$93/12*G445","v":0},0,272,0,0,0,0]
[273,0,{"$f":"-'Residential Rental'!$E$89/12","v":0},{"$f":"'Residential Rental'!$E$87/12*B446","v":0},0,273,0,{"$f":"-'Residential Rental'!$E$95/12","v":0},{"$f":"'Residential Rental'!$E$93/12*G446","v":0},0,273,0,0,0,0]
[274,0,{"$f":"-'Residential Rental'!$E$89/12","v":0},{"$f":"'Residential Rental'!$E$87/12*B447","v":0},0,274,0,{"$f":"-'Residential Rental'!$E$95/12","v":0},{"$f":"'Residential Rental'!$E$93/12*G447","v":0},0,274,0,0,0,0]
[275,0,{"$f":"-'Residential Rental'!$E$89/12","v":0},{"$f":"'Residential Rental'!$E$87/12*B448","v":0},0,275,0,{"$f":"-'Residential Rental'!$E$95/12","v":0},{"$f":"'Residential Rental'!$E$93/12*G448","v":0},0,275,0,0,0,0]
[276,0,{"$f":"-'Residential Rental'!$E$89/12","v":0},{"$f":"'Residential Rental'!$E$87/12*B449","v":0},0,276,0,{"$f":"-'Residential Rental'!$E$95/12","v":0},{"$f":"'Residential Rental'!$E$93/12*G449","v":0},0,276,0,0,0,0]
[277,0,{"$f":"-'Residential Rental'!$E$89/12","v":0},{"$f":"'Residential Rental'!$E$87/12*B450","v":0},0,277,0,{"$f":"-'Residential Rental'!$E$95/12","v":0},{"$f":"'Residential Rental'!$E$93/12*G450","v":0},0,277,0,0,0,0]
[278,0,{"$f":"-'Residential Rental'!$E$89/12","v":0},{"$f":"'Residential Rental'!$E$87/12*B451","v":0},0,278,0,{"$f":"-'Residential Rental'!$E$95/12","v":0},{"$f":"'Residential Rental'!$E$93/12*G451","v":0},0,278,0,0,0,0]
[279,0,{"$f":"-'Residential Rental'!$E$89/12","v":0},{"$f":"'Residential Rental'!$E$87/12*B452","v":0},0,279,0,{"$f":"-'Residential Rental'!$E$95/12","v":0},{"$f":"'Residential Rental'!$E$93/12*G452","v":0},0,279,0,0,0,0]
[280,0,{"$f":"-'Residential Rental'!$E$89/12","v":0},{"$f":"'Residential Rental'!$E$87/12*B453","v":0},0,280,0,{"$f":"-'Residential Rental'!$E$95/12","v":0},{"$f":"'Residential Rental'!$E$93/12*G453","v":0},0,280,0,0,0,0]
[281,0,{"$f":"-'Residential Rental'!$E$89/12","v":0},{"$f":"'Residential Rental'!$E$87/12*B454","v":0},0,281,0,{"$f":"-'Residential Rental'!$E$95/12","v":0},{"$f":"'Residential Rental'!$E$93/12*G454","v":0},0,281,0,0,0,0]
[282,0,{"$f":"-'Residential Rental'!$E$89/12","v":0},{"$f":"'Residential Rental'!$E$87/12*B455","v":0},0,282,0,{"$f":"-'Residential Rental'!$E$95/12","v":0},{"$f":"'Residential Rental'!$E$93/12*G455","v":0},0,282,0,0,0,0]
[283,0,{"$f":"-'Residential Rental'!$E$89/12","v":0},{"$f":"'Residential Rental'!$E$87/12*B456","v":0},0,283,0,{"$f":"-'Residential Rental'!$E$95/12","v":0},{"$f":"'Residential Rental'!$E$93/12*G456","v":0},0,283,0,0,0,0]
[284,0,{"$f":"-'Residential Rental'!$E$89/12","v":0},{"$f":"'Residential Rental'!$E$87/12*B457","v":0},0,284,0,{"$f":"-'Residential Rental'!$E$95/12","v":0},{"$f":"'Residential Rental'!$E$93/12*G457","v":0},0,284,0,0,0,0]
[285,0,{"$f":"-'Residential Rental'!$E$89/12","v":0},{"$f":"'Residential Rental'!$E$87/12*B458","v":0},0,285,0,{"$f":"-'Residential Rental'!$E$95/12","v":0},{"$f":"'Residential Rental'!$E$93/12*G458","v":0},0,285,0,0,0,0]
[286,0,{"$f":"-'Residential Rental'!$E$89/12","v":0},{"$f":"'Residential Rental'!$E$87/12*B459","v":0},0,286,0,{"$f":"-'Residential Rental'!$E$95/12","v":0},{"$f":"'Residential Rental'!$E$93/12*G459","v":0},0,286,0,0,0,0]
[287,0,{"$f":"-'Residential Rental'!$E$89/12","v":0},{"$f":"'Residential Rental'!$E$87/12*B460","v":0},0,287,0,{"$f":"-'Residential Rental'!$E$95/12","v":0},{"$f":"'Residential Rental'!$E$93/12*G460","v":0},0,287,0,0,0,0]
[288,0,{"$f":"-'Residential Rental'!$E$89/12","v":0},{"$f":"'Residential Rental'!$E$87/12*B461","v":0},0,288,0,{"$f":"-'Residential Rental'!$E$95/12","v":0},{"$f":"'Residential Rental'!$E$93/12*G461","v":0},0,288,0,0,0,0]
[289,0,{"$f":"-'Residential Rental'!$E$89/12","v":0},{"$f":"'Residential Rental'!$E$87/12*B462","v":0},0,289,0,{"$f":"-'Residential Rental'!$E$95/12","v":0},{"$f":"'Residential Rental'!$E$93/12*G462","v":0},0,289,0,0,0,0]
[290,0,{"$f":"-'Residential Rental'!$E$89/12","v":0},{"$f":"'Residential Rental'!$E$87/12*B463","v":0},0,290,0,{"$f":"-'Residential Rental'!$E$95/12","v":0},{"$f":"'Residential Rental'!$E$93/12*G463","v":0},0,290,0,0,0,0]
[291,0,{"$f":"-'Residential Rental'!$E$89/12","v":0},{"$f":"'Residential Rental'!$E$87/12*B464","v":0},0,291,0,{"$f":"-'Residential Rental'!$E$95/12","v":0},{"$f":"'Residential Rental'!$E$93/12*G464","v":0},0,291,0,0,0,0]
[292,0,{"$f":"-'Residential Rental'!$E$89/12","v":0},{"$f":"'Residential Rental'!$E$87/12*B465","v":0},0,292,0,{"$f":"-'Residential Rental'!$E$95/12","v":0},{"$f":"'Residential Rental'!$E$93/12*G465","v":0},0,292,0,0,0,0]
[293,0,{"$f":"-'Residential Rental'!$E$89/12","v":0},{"$f":"'Residential Rental'!$E$87/12*B466","v":0},0,293,0,{"$f":"-'Residential Rental'!$E$95/12","v":0},{"$f":"'Residential Rental'!$E$93/12*G466","v":0},0,293,0,0,0,0]
[294,0,{"$f":"-'Residential Rental'!$E$89/12","v":0},{"$f":"'Residential Rental'!$E$87/12*B467","v":0},0,294,0,{"$f":"-'Residential Rental'!$E$95/12","v":0},{"$f":"'Residential Rental'!$E$93/12*G467","v":0},0,294,0,0,0,0]
[295,0,{"$f":"-'Residential Rental'!$E$89/12","v":0},{"$f":"'Residential Rental'!$E$87/12*B468","v":0},0,295,0,{"$f":"-'Residential Rental'!$E$95/12","v":0},{"$f":"'Residential Rental'!$E$93/12*G468","v":0},0,295,0,0,0,0]
[296,0,{"$f":"-'Residential Rental'!$E$89/12","v":0},{"$f":"'Residential Rental'!$E$87/12*B469","v":0},0,296,0,{"$f":"-'Residential Rental'!$E$95/12","v":0},{"$f":"'Residential Rental'!$E$93/12*G469","v":0},0,296,0,0,0,0]
[297,0,{"$f":"-'Residential Rental'!$E$89/12","v":0},{"$f":"'Residential Rental'!$E$87/12*B470","v":0},0,297,0,{"$f":"-'Residential Rental'!$E$95/12","v":0},{"$f":"'Residential Rental'!$E$93/12*G470","v":0},0,297,0,0,0,0]
[298,0,{"$f":"-'Residential Rental'!$E$89/12","v":0},{"$f":"'Residential Rental'!$E$87/12*B471","v":0},0,298,0,{"$f":"-'Residential Rental'!$E$95/12","v":0},{"$f":"'Residential Rental'!$E$93/12*G471","v":0},0,298,0,0,0,0]
[299,0,{"$f":"-'Residential Rental'!$E$89/12","v":0},{"$f":"'Residential Rental'!$E$87/12*B472","v":0},0,299,0,{"$f":"-'Residential Rental'!$E$95/12","v":0},{"$f":"'Residential Rental'!$E$93/12*G472","v":0},0,299,0,0,0,0]
[300,0,{"$f":"-'Residential Rental'!$E$89/12","v":0},{"$f":"'Residential Rental'!$E$87/12*B473","v":0},0,300,0,{"$f":"-'Residential Rental'!$E$95/12","v":0},{"$f":"'Residential Rental'!$E$93/12*G473","v":0},0,300,0,0,0,0]
[301,0,{"$f":"-'Residential Rental'!$E$89/12","v":0},{"$f":"'Residential Rental'!$E$87/12*B474","v":0},0,301,0,{"$f":"-'Residential Rental'!$E$95/12","v":0},{"$f":"'Residential Rental'!$E$93/12*G474","v":0},0,301,0,0,0,0]
[302,0,{"$f":"-'Residential Rental'!$E$89/12","v":0},{"$f":"'Residential Rental'!$E$87/12*B475","v":0},0,302,0,{"$f":"-'Residential Rental'!$E$95/12","v":0},{"$f":"'Residential Rental'!$E$93/12*G475","v":0},0,302,0,0,0,0]
[303,0,{"$f":"-'Residential Rental'!$E$89/12","v":0},{"$f":"'Residential Rental'!$E$87/12*B476","v":0},0,303,0,{"$f":"-'Residential Rental'!$E$95/12","v":0},{"$f":"'Residential Rental'!$E$93/12*G476","v":0},0,303,0,0,0,0]
[304,0,{"$f":"-'Residential Rental'!$E$89/12","v":0},{"$f":"'Residential Rental'!$E$87/12*B477","v":0},0,304,0,{"$f":"-'Residential Rental'!$E$95/12","v":0},{"$f":"'Residential Rental'!$E$93/12*G477","v":0},0,304,0,0,0,0]
[305,0,{"$f":"-'Residential Rental'!$E$89/12","v":0},{"$f":"'Residential Rental'!$E$87/12*B478","v":0},0,305,0,{"$f":"-'Residential Rental'!$E$95/12","v":0},{"$f":"'Residential Rental'!$E$93/12*G478","v":0},0,305,0,0,0,0]
[306,0,{"$f":"-'Residential Rental'!$E$89/12","v":0},{"$f":"'Residential Rental'!$E$87/12*B479","v":0},0,306,0,{"$f":"-'Residential Rental'!$E$95/12","v":0},{"$f":"'Residential Rental'!$E$93/12*G479","v":0},0,306,0,0,0,0]
[307,0,{"$f":"-'Residential Rental'!$E$89/12","v":0},{"$f":"'Residential Rental'!$E$87/12*B480","v":0},0,307,0,{"$f":"-'Residential Rental'!$E$95/12","v":0},{"$f":"'Residential Rental'!$E$93/12*G480","v":0},0,307,0,0,0,0]
[308,0,{"$f":"-'Residential Rental'!$E$89/12","v":0},{"$f":"'Residential Rental'!$E$87/12*B481","v":0},0,308,0,{"$f":"-'Residential Rental'!$E$95/12","v":0},{"$f":"'Residential Rental'!$E$93/12*G481","v":0},0,308,0,0,0,0]
[309,0,{"$f":"-'Residential Rental'!$E$89/12","v":0},{"$f":"'Residential Rental'!$E$87/12*B482","v":0},0,309,0,{"$f":"-'Residential Rental'!$E$95/12","v":0},{"$f":"'Residential Rental'!$E$93/12*G482","v":0},0,309,0,0,0,0]
[310,0,{"$f":"-'Residential Rental'!$E$89/12","v":0},{"$f":"'Residential Rental'!$E$87/12*B483","v":0},0,310,0,{"$f":"-'Residential Rental'!$E$95/12","v":0},{"$f":"'Residential Rental'!$E$93/12*G483","v":0},0,310,0,0,0,0]
[311,0,{"$f":"-'Residential Rental'!$E$89/12","v":0},{"$f":"'Residential Rental'!$E$87/12*B484","v":0},0,311,0,{"$f":"-'Residential Rental'!$E$95/12","v":0},{"$f":"'Residential Rental'!$E$93/12*G484","v":0},0,311,0,0,0,0]
[312,0,{"$f":"-'Residential Rental'!$E$89/12","v":0},{"$f":"'Residential Rental'!$E$87/12*B485","v":0},0,312,0,{"$f":"-'Residential Rental'!$E$95/12","v":0},{"$f":"'Residential Rental'!$E$93/12*G485","v":0},0,312,0,0,0,0]
[313,0,{"$f":"-'Residential Rental'!$E$89/12","v":0},{"$f":"'Residential Rental'!$E$87/12*B486","v":0},0,313,0,{"$f":"-'Residential Rental'!$E$95/12","v":0},{"$f":"'Residential Rental'!$E$93/12*G486","v":0},0,313,0,0,0,0]
[314,0,{"$f":"-'Residential Rental'!$E$89/12","v":0},{"$f":"'Residential Rental'!$E$87/12*B487","v":0},0,314,0,{"$f":"-'Residential Rental'!$E$95/12","v":0},{"$f":"'Residential Rental'!$E$93/12*G487","v":0},0,314,0,0,0,0]
[315,0,{"$f":"-'Residential Rental'!$E$89/12","v":0},{"$f":"'Residential Rental'!$E$87/12*B488","v":0},0,315,0,{"$f":"-'Residential Rental'!$E$95/12","v":0},{"$f":"'Residential Rental'!$E$93/12*G488","v":0},0,315,0,0,0,0]
[316,0,{"$f":"-'Residential Rental'!$E$89/12","v":0},{"$f":"'Residential Rental'!$E$87/12*B489","v":0},0,316,0,{"$f":"-'Residential Rental'!$E$95/12","v":0},{"$f":"'Residential Rental'!$E$93/12*G489","v":0},0,316,0,0,0,0]
[317,0,{"$f":"-'Residential Rental'!$E$89/12","v":0},{"$f":"'Residential Rental'!$E$87/12*B490","v":0},0,317,0,{"$f":"-'Residential Rental'!$E$95/12","v":0},{"$f":"'Residential Rental'!$E$93/12*G490","v":0},0,317,0,0,0,0]
[318,0,{"$f":"-'Residential Rental'!$E$89/12","v":0},{"$f":"'Residential Rental'!$E$87/12*B491","v":0},0,318,0,{"$f":"-'Residential Rental'!$E$95/12","v":0},{"$f":"'Residential Rental'!$E$93/12*G491","v":0},0,318,0,0,0,0]
[319,0,{"$f":"-'Residential Rental'!$E$89/12","v":0},{"$f":"'Residential Rental'!$E$87/12*B492","v":0},0,319,0,{"$f":"-'Residential Rental'!$E$95/12","v":0},{"$f":"'Residential Rental'!$E$93/12*G492","v":0},0,319,0,0,0,0]
[320,0,{"$f":"-'Residential Rental'!$E$89/12","v":0},{"$f":"'Residential Rental'!$E$87/12*B493","v":0},0,320,0,{"$f":"-'Residential Rental'!$E$95/12","v":0},{"$f":"'Residential Rental'!$E$93/12*G493","v":0},0,320,0,0,0,{"$f":"J494+E494","v":0}]
[321,{"$f":"B494-E495","v":0},{"$f":"-'Residential Rental'!$E$89/12","v":0},{"$f":"'Residential Rental'!$E$87/12*B494","v":0},{"$f":"C495-D495","v":0},321,{"$f":"G494-J495","v":0},{"$f":"-'Residential Rental'!$E$95/12","v":0},{"$f":"'Residential Rental'!$E$93/12*G494","v":0},{"$f":"H495-I495","v":0},321,{"$f":"G495+B495","v":0},0,0,0]
[{"$f":"A495+1","v":322},0,{"$f":"-'Residential Rental'!$E$89/12","v":0},{"$f":"'Residential Rental'!$E$87/12*B495","v":0},0,{"$f":"F495+1","v":322},0,{"$f":"-'Residential Rental'!$E$95/12","v":0},{"$f":"'Residential Rental'!$E$93/12*G495","v":0},0,{"$f":"K495+1","v":322},0,0,0,0]
[323,0,{"$f":"-'Residential Rental'!$E$89/12","v":0},{"$f":"'Residential Rental'!$E$87/12*B496","v":0},0,323,0,{"$f":"-'Residential Rental'!$E$95/12","v":0},{"$f":"'Residential Rental'!$E$93/12*G496","v":0},0,323,0,0,0,0]
[324,0,{"$f":"-'Residential Rental'!$E$89/12","v":0},{"$f":"'Residential Rental'!$E$87/12*B497","v":0},0,324,0,{"$f":"-'Residential Rental'!$E$95/12","v":0},{"$f":"'Residential Rental'!$E$93/12*G497","v":0},0,324,0,0,0,0]
[325,0,{"$f":"-'Residential Rental'!$E$89/12","v":0},{"$f":"'Residential Rental'!$E$87/12*B498","v":0},0,325,0,{"$f":"-'Residential Rental'!$E$95/12","v":0},{"$f":"'Residential Rental'!$E$93/12*G498","v":0},0,325,0,0,0,0]
[326,0,{"$f":"-'Residential Rental'!$E$89/12","v":0},{"$f":"'Residential Rental'!$E$87/12*B499","v":0},0,326,0,{"$f":"-'Residential Rental'!$E$95/12","v":0},{"$f":"'Residential Rental'!$E$93/12*G499","v":0},0,326,0,0,0,0]
[327,0,{"$f":"-'Residential Rental'!$E$89/12","v":0},{"$f":"'Residential Rental'!$E$87/12*B500","v":0},0,327,0,{"$f":"-'Residential Rental'!$E$95/12","v":0},{"$f":"'Residential Rental'!$E$93/12*G500","v":0},0,327,0,0,0,0]
[328,0,{"$f":"-'Residential Rental'!$E$89/12","v":0},{"$f":"'Residential Rental'!$E$87/12*B501","v":0},0,328,0,{"$f":"-'Residential Rental'!$E$95/12","v":0},{"$f":"'Residential Rental'!$E$93/12*G501","v":0},0,328,0,0,0,0]
[329,0,{"$f":"-'Residential Rental'!$E$89/12","v":0},{"$f":"'Residential Rental'!$E$87/12*B502","v":0},0,329,0,{"$f":"-'Residential Rental'!$E$95/12","v":0},{"$f":"'Residential Rental'!$E$93/12*G502","v":0},0,329,0,0,0,0]
[330,0,{"$f":"-'Residential Rental'!$E$89/12","v":0},{"$f":"'Residential Rental'!$E$87/12*B503","v":0},0,330,0,{"$f":"-'Residential Rental'!$E$95/12","v":0},{"$f":"'Residential Rental'!$E$93/12*G503","v":0},0,330,0,0,0,0]
[331,0,{"$f":"-'Residential Rental'!$E$89/12","v":0},{"$f":"'Residential Rental'!$E$87/12*B504","v":0},0,331,0,{"$f":"-'Residential Rental'!$E$95/12","v":0},{"$f":"'Residential Rental'!$E$93/12*G504","v":0},0,331,0,0,0,0]
[332,0,{"$f":"-'Residential Rental'!$E$89/12","v":0},{"$f":"'Residential Rental'!$E$87/12*B505","v":0},0,332,0,{"$f":"-'Residential Rental'!$E$95/12","v":0},{"$f":"'Residential Rental'!$E$93/12*G505","v":0},0,332,0,0,0,0]
[333,0,{"$f":"-'Residential Rental'!$E$89/12","v":0},{"$f":"'Residential Rental'!$E$87/12*B506","v":0},0,333,0,{"$f":"-'Residential Rental'!$E$95/12","v":0},{"$f":"'Residential Rental'!$E$93/12*G506","v":0},0,333,0,0,0,0]
[334,0,{"$f":"-'Residential Rental'!$E$89/12","v":0},{"$f":"'Residential Rental'!$E$87/12*B507","v":0},0,334,0,{"$f":"-'Residential Rental'!$E$95/12","v":0},{"$f":"'Residential Rental'!$E$93/12*G507","v":0},0,334,0,0,0,0]
[335,0,{"$f":"-'Residential Rental'!$E$89/12","v":0},{"$f":"'Residential Rental'!$E$87/12*B508","v":0},0,335,0,{"$f":"-'Residential Rental'!$E$95/12","v":0},{"$f":"'Residential Rental'!$E$93/12*G508","v":0},0,335,0,0,0,0]
[336,0,{"$f":"-'Residential Rental'!$E$89/12","v":0},{"$f":"'Residential Rental'!$E$87/12*B509","v":0},0,336,0,{"$f":"-'Residential Rental'!$E$95/12","v":0},{"$f":"'Residential Rental'!$E$93/12*G509","v":0},0,336,0,0,0,0]
[337,0,{"$f":"-'Residential Rental'!$E$89/12","v":0},{"$f":"'Residential Rental'!$E$87/12*B510","v":0},0,337,0,{"$f":"-'Residential Rental'!$E$95/12","v":0},{"$f":"'Residential Rental'!$E$93/12*G510","v":0},0,337,0,0,0,0]
[338,0,{"$f":"-'Residential Rental'!$E$89/12","v":0},{"$f":"'Residential Rental'!$E$87/12*B511","v":0},0,338,0,{"$f":"-'Residential Rental'!$E$95/12","v":0},{"$f":"'Residential Rental'!$E$93/12*G511","v":0},0,338,0,0,0,0]
[339,0,{"$f":"-'Residential Rental'!$E$89/12","v":0},{"$f":"'Residential Rental'!$E$87/12*B512","v":0},0,339,0,{"$f":"-'Residential Rental'!$E$95/12","v":0},{"$f":"'Residential Rental'!$E$93/12*G512","v":0},0,339,0,0,0,0]
[340,0,{"$f":"-'Residential Rental'!$E$89/12","v":0},{"$f":"'Residential Rental'!$E$87/12*B513","v":0},0,340,0,{"$f":"-'Residential Rental'!$E$95/12","v":0},{"$f":"'Residential Rental'!$E$93/12*G513","v":0},0,340,0,0,0,0]
[341,0,{"$f":"-'Residential Rental'!$E$89/12","v":0},{"$f":"'Residential Rental'!$E$87/12*B514","v":0},0,341,0,{"$f":"-'Residential Rental'!$E$95/12","v":0},{"$f":"'Residential Rental'!$E$93/12*G514","v":0},0,341,0,0,0,0]
[342,0,{"$f":"-'Residential Rental'!$E$89/12","v":0},{"$f":"'Residential Rental'!$E$87/12*B515","v":0},0,342,0,{"$f":"-'Residential Rental'!$E$95/12","v":0},{"$f":"'Residential Rental'!$E$93/12*G515","v":0},0,342,0,0,0,0]
[343,0,{"$f":"-'Residential Rental'!$E$89/12","v":0},{"$f":"'Residential Rental'!$E$87/12*B516","v":0},0,343,0,{"$f":"-'Residential Rental'!$E$95/12","v":0},{"$f":"'Residential Rental'!$E$93/12*G516","v":0},0,343,0,0,0,0]
[344,0,{"$f":"-'Residential Rental'!$E$89/12","v":0},{"$f":"'Residential Rental'!$E$87/12*B517","v":0},0,344,0,{"$f":"-'Residential Rental'!$E$95/12","v":0},{"$f":"'Residential Rental'!$E$93/12*G517","v":0},0,344,0,0,0,0]
[345,0,{"$f":"-'Residential Rental'!$E$89/12","v":0},{"$f":"'Residential Rental'!$E$87/12*B518","v":0},0,345,0,{"$f":"-'Residential Rental'!$E$95/12","v":0},{"$f":"'Residential Rental'!$E$93/12*G518","v":0},0,345,0,0,0,0]
[346,0,{"$f":"-'Residential Rental'!$E$89/12","v":0},{"$f":"'Residential Rental'!$E$87/12*B519","v":0},0,346,0,{"$f":"-'Residential Rental'!$E$95/12","v":0},{"$f":"'Residential Rental'!$E$93/12*G519","v":0},0,346,0,0,0,0]
[347,0,{"$f":"-'Residential Rental'!$E$89/12","v":0},{"$f":"'Residential Rental'!$E$87/12*B520","v":0},0,347,0,{"$f":"-'Residential Rental'!$E$95/12","v":0},{"$f":"'Residential Rental'!$E$93/12*G520","v":0},0,347,0,0,0,0]
[348,0,{"$f":"-'Residential Rental'!$E$89/12","v":0},{"$f":"'Residential Rental'!$E$87/12*B521","v":0},0,348,0,{"$f":"-'Residential Rental'!$E$95/12","v":0},{"$f":"'Residential Rental'!$E$93/12*G521","v":0},0,348,0,0,0,0]
[349,0,{"$f":"-'Residential Rental'!$E$89/12","v":0},{"$f":"'Residential Rental'!$E$87/12*B522","v":0},0,349,0,{"$f":"-'Residential Rental'!$E$95/12","v":0},{"$f":"'Residential Rental'!$E$93/12*G522","v":0},0,349,0,0,0,0]
[350,0,{"$f":"-'Residential Rental'!$E$89/12","v":0},{"$f":"'Residential Rental'!$E$87/12*B523","v":0},0,350,0,{"$f":"-'Residential Rental'!$E$95/12","v":0},{"$f":"'Residential Rental'!$E$93/12*G523","v":0},0,350,0,0,0,0]
[351,0,{"$f":"-'Residential Rental'!$E$89/12","v":0},{"$f":"'Residential Rental'!$E$87/12*B524","v":0},0,351,0,{"$f":"-'Residential Rental'!$E$95/12","v":0},{"$f":"'Residential Rental'!$E$93/12*G524","v":0},0,351,0,0,0,0]
[352,0,{"$f":"-'Residential Rental'!$E$89/12","v":0},{"$f":"'Residential Rental'!$E$87/12*B525","v":0},0,352,0,{"$f":"-'Residential Rental'!$E$95/12","v":0},{"$f":"'Residential Rental'!$E$93/12*G525","v":0},0,352,0,0,0,0]
[353,0,{"$f":"-'Residential Rental'!$E$89/12","v":0},{"$f":"'Residential Rental'!$E$87/12*B526","v":0},0,353,0,{"$f":"-'Residential Rental'!$E$95/12","v":0},{"$f":"'Residential Rental'!$E$93/12*G526","v":0},0,353,0,0,0,0]
[354,0,{"$f":"-'Residential Rental'!$E$89/12","v":0},{"$f":"'Residential Rental'!$E$87/12*B527","v":0},0,354,0,{"$f":"-'Residential Rental'!$E$95/12","v":0},{"$f":"'Residential Rental'!$E$93/12*G527","v":0},0,354,0,0,0,0]
[355,0,{"$f":"-'Residential Rental'!$E$89/12","v":0},{"$f":"'Residential Rental'!$E$87/12*B528","v":0},0,355,0,{"$f":"-'Residential Rental'!$E$95/12","v":0},{"$f":"'Residential Rental'!$E$93/12*G528","v":0},0,355,0,0,0,0]
[356,0,{"$f":"-'Residential Rental'!$E$89/12","v":0},{"$f":"'Residential Rental'!$E$87/12*B529","v":0},0,356,0,{"$f":"-'Residential Rental'!$E$95/12","v":0},{"$f":"'Residential Rental'!$E$93/12*G529","v":0},0,356,0,0,0,0]
[357,0,{"$f":"-'Residential Rental'!$E$89/12","v":0},{"$f":"'Residential Rental'!$E$87/12*B530","v":0},0,357,0,{"$f":"-'Residential Rental'!$E$95/12","v":0},{"$f":"'Residential Rental'!$E$93/12*G530","v":0},0,357,0,0,0,0]
[358,0,{"$f":"-'Residential Rental'!$E$89/12","v":0},{"$f":"'Residential Rental'!$E$87/12*B531","v":0},0,358,0,{"$f":"-'Residential Rental'!$E$95/12","v":0},{"$f":"'Residential Rental'!$E$93/12*G531","v":0},0,358,0,0,0,0]
[359,0,{"$f":"-'Residential Rental'!$E$89/12","v":0},{"$f":"'Residential Rental'!$E$87/12*B532","v":0},0,359,0,{"$f":"-'Residential Rental'!$E$95/12","v":0},{"$f":"'Residential Rental'!$E$93/12*G532","v":0},0,359,0,0,0,0]
[360,0,{"$f":"-'Residential Rental'!$E$89/12","v":0},{"$f":"'Residential Rental'!$E$87/12*B533","v":0},0,360,0,{"$f":"-'Residential Rental'!$E$95/12","v":0},{"$f":"'Residential Rental'!$E$93/12*G533","v":0},0,360,0,0,0,0]

{"sheet":"Retail","index":21,"n_rows":536,"n_cols":30,"rows_kept":536,"cut":false,"hidden":true,"merged":[]}
["ROI Template - Retail"]
[]
["Leveraging Tools",null,null,"Summary","User override ","TOTAL",null,"Investment Targets and Performance"]
["Tax Credits net to project",null,null,{"$f":"'Gap Financing Options'!E122","v":0},0,{"$f":"IF('Basic Financial'!$B$34=0,D4,0)","v":0},null,"Performance Indicator",null,null,null,"Target","Actual","NPV"]
["Fee Reductions",null,null,{"$f":"'Gap Financing Options'!E88","v":0},0,{"$f":"IF('Basic Financial'!$B$34=0,D5,0)","v":0},null,"Cash-on-Cash After Year 3",null,null,null,{"$f":"'Advanced Financial'!E67","v":0.1},{"$f":"G135","v":0}]
["Grants",null,null,{"$f":"'Gap Financing Options'!E98","v":0},0,{"$f":"IF('Basic Financial'!$B$34=0,D6,('Basic Financial'!$B$34*'Development Costs'!F42))","v":0},null,"IRR on Project Cost (Unleveraged Return)",null,null,null,{"$f":"'Advanced Financial'!E68","v":0.1},{"$f":"N149","v":0},{"$f":"N150","v":0}]
["Total Development Offsets (Contributions to Equity)",null,null,null,null,{"$f":"SUM(F4:F6)","v":0},null,"IRR on Investor Equity (Leveraged Return Before Tax)",null,null,null,{"$f":"'Advanced Financial'!E69","v":0.25},{"$f":"N157","v":0},{"$f":"N158","v":0}]
["Net Development Costs",null,null,null,null,{"$f":"(D57-F7)","v":0},null,"Debt Service Coverage Ratio (Year 3)",null,null,null,{"$f":"'Advanced Financial'!E70","v":1.25},{"$f":"IFERROR(G129/G131,0)","v":0}]
[null,null,null,null,null,null,null,"IRR on Public Participation",null,null,null,{"$f":"E112","v":0.05},{"$f":"N167","v":0},{"$f":"N168","v":0}]
[]
[]
[]
["Local Property Tax Rate Available for abatement",null,null,{"$f":"'Gap Financing Options'!E15","v":0}]
["Local Sales Tax Rate Available for abatement",null,null,{"$f":"'Gap Financing Options'!E37","v":0}]
[]
["Net Operating Income Analysis"]
["Total Development Costs",null,null,{"$f":"-'Development Costs'!E42","v":0}]
["Project Feature",null,null,"Project","Rent"]
["Total project size, square feet",null,null,{"$f":"'Physical Outputs'!C30","v":0},{"$f":"'Basic Financial'!B58","v":18},"per square foot/year"]
["Projected Sales per Square Foot",null,null,null,{"$f":"'Advanced Financial'!E78","v":0}]
["Other Income",null,null,{"$f":"'Advanced Financial'!E80","v":0}]
["Less: Vacancy",null,null,{"$f":"1-'Advanced Financial'!C33","v":5.0000000000000044E-2}]
["Less: Concessions, Bad Debt",null,null,{"$f":"'Advanced Financial'!E81","v":0}]
["Less: Operating Costs/sq.ft.",null,null,{"$f":"IFERROR((('Advanced Financial'!E82*E63)/'Physical Outputs'!C30),0)","v":0}]
[]
["Initial Project Value Analysis"]
["Property Value (Year 1)"]
["Going in Cap Rate",null,null,{"$f":"'Advanced Financial'!E83","v":0}]
[]
["Debt Financing"]
["Primary Debt"]
["Maximum LTV",null,null,{"$f":"'Advanced Financial'!E91","v":0.7}]
["Rate",null,null,{"$f":"'Advanced Financial'!E92","v":0.06}]
["Amortization Period, Years",null,null,{"$f":"'Advanced Financial'!E93","v":25}]
["Public Leveraging Loan"]
["Maximum LTV",null,null,{"$f":"IF(D43=1,'Gap Financing Options'!E69,0)","v":0}]
["Rate",null,null,{"$f":"IF(D43=1,'Gap Financing Options'!E70,0)","v":0}]
["Amortization Period, Years",null,null,{"$f":"IF(D43=1,'Gap Financing Options'!E71,0)","v":0}]
["Public Participation"]
["Capital Investment",null,null,{"$f":"IF(D43=1,'Gap Financing Options'!E75,0)","v":0}]
["Annual Cash Throw Off",null,null,{"$f":"IF(D43=1,'Gap Financing Options'!E76,0)","v":0}]
["Share of Net Sales Price",null,null,{"$f":"IF(D43=1,'Gap Financing Options'!E77,0)","v":0}]
["Public Leveraging Loan Included in Analysis?(1=Yes; 0=No) ",null,null,{"$f":"'Gap Financing Options'!E68","v":0}]
["Target IRR",null,null,{"$f":"'Advanced Financial'!E71","v":0.05}]
[]
["Operating Statement"]
["GPI",null,"Escalation",{"$f":"'Advanced Financial'!E84","v":0}]
["EGI"]
["Less: Operating Costs",null,"Escalation",{"$f":"'Advanced Financial'!E85","v":0}]
[]
["Project Value",null,null,"Year 1"]
["Terminal Cap Rate, Gross Sales Price",null,null,{"$f":"'Advanced Financial'!E87","v":0}]
["Net Sales = Price Less Sales Cost",null,null,{"$f":"'Advanced Financial'!E88","v":0}]
[]
[]
["Net Operating Income Analysis"]
["Total Development Costs",null,null,{"$f":"D17","v":0}]
["Development Costs Per Sq Ft",null,null,{"$f":"IFERROR(D57/D60,0)","v":0}]
["Project Feature",null,null,"Project","Rent"]
["Total project size, square feet",null,null,{"$f":"D19","v":0},{"$f":"E19","v":18},"per square foot/year"]
["Projected Sales per Square Foot",null,null,null,{"$f":"E20","v":0}]
["Rental Income from Sales Assessment",null,null,null,{"$f":"(D60*E61)*'Advanced Financial'!E79","v":0}]
["Gross Potential Rent  (GPI)",null,null,null,{"$f":"(D60*E60)+E62","v":0}]
["Other Income",null,null,{"$f":"D21","v":0},{"$f":"D64*E63","v":0}]
["Total Income",null,null,null,{"$f":"E63+E64","v":0}]
["Less: Vacancy",null,null,{"$f":"D22","v":5.0000000000000044E-2},{"$f":"E65*D66","v":0}]
["Less: Concessions, Bad Debt",null,null,{"$f":"D23","v":0},{"$f":"E65*D67","v":0}]
["Effective Gross Income  (EGI)",null,null,null,{"$f":"E65-E66-E67","v":0}]
["Less: Operating Costs/sq.ft.",null,null,{"$f":"D24","v":0},{"$f":"D69*D60","v":0}]
["Net Operating Income",null,null,null,{"$f":"E68-E69","v":0}]
[]
["Initial Project Value Analysis"]
["CAP RATE (Yield to Costs)",null,null,{"$f":"IFERROR(E70/F8,0)","v":0}]
["Debt Service",null,null,{"$f":"IFERROR(-E99,0)","v":0}]
["Cash Flow",null,null,{"$f":"E70-D74","v":0}]
["Return on Equity (Year 1)",null,null,{"$f":"IFERROR(D75/E104,0)","v":0}]
["Property Value (Year 1)"]
["NOI",null,null,{"$f":"E70","v":0}]
["Going in Cap Rate",null,null,{"$f":"D28","v":0}]
["Project Market Value",null,null,{"$f":"IFERROR(D78/D79,0)","v":0}]
["Net Project Value",null,null,{"$f":"D80-D57","v":0}]
[]
["Debt Financing"]
["Primary Debt"]
["Total Value",null,null,null,{"$f":"IF(D80>D57,D57,D80)","v":0}]
["Maximum LTV",null,null,{"$f":"D32","v":0.7},{"$f":"E85*D86","v":0}]
["Imputed Loan Amount",null,null,null,{"$f":"E86","v":0}]
["Rate",null,null,null,{"$f":"D33","v":0.06}]
["Amortization Period, Years",null,null,null,{"$f":"D34","v":25}]
["Annual Debt Service (Amortized)",null,null,null,{"$f":"IFERROR(PMT(E88/12,E89*12,E87)*12,0)","v":0}]
["Public Leveraging Loan"]
["Maximum LTV",null,null,{"$f":"IF(D43=1,D36,0)","v":0},{"$f":"IF(E85*D92>'Gap Financing Options'!B79*'Development Costs'!F42,'Gap Financing Options'!B79*'Development Costs'!F42,E85*D92)","v":0}]
["Imputed Loan Amount",null,null,null,{"$f":"IF(AND(D43=1,'Basic Financial'!B34=0),E92+'Gap Financing Options'!E74,0)","v":0}]
["Rate",null,null,null,{"$f":"IF(D43=1,D37,0)","v":0}]
["Amortization Period, Years",null,null,null,{"$f":"IF(D43=1,D38,0)","v":0}]
["Annual Debt Service (Amortized)",null,null,null,{"$f":"IFERROR(PMT(E94/12,E95*12,E93)*12,0)","v":0}]
[]
["Total Debt",null,null,null,{"$f":"E87+E93","v":0}]
["Total Debt Service",null,null,null,{"$f":"E90+E96","v":0}]
["Summary"]
["Total Development Costs",null,null,null,{"$f":"D57","v":0}]
["Equity Required",null,null,null,{"$f":"IF(E101-E98<0,1,E101-E98)","v":0}]
["Total Development Offsets (Contributions to Equity)",null,null,null,{"$f":"F7","v":0}]
["Net Equity Required",null,null,null,{"$f":"E102-E103","v":0}]
["Total Project Cost",null,null,null,{"$f":"E101","v":0}]
["Total Project Cost After Development Offsets",null,null,null,{"$f":"E105-E103","v":0}]
["Public Participation"]
["Capital Investment",null,null,null,{"$f":"D40","v":0}]
["Annual Cash Throw Off",null,null,null,{"$f":"D41","v":0}]
["Share of Net Sales Price",null,null,null,{"$f":"D42","v":0}]
["Public Leveraging Loan Included in Analysis? ",null,null,"(1=Yes; 0=No)",{"$f":"D43","v":0}]
["Target IRR",null,null,null,{"$f":"D44","v":0.05}]
[]
[]
[]
["Operating Statement",null,null,null,"Year 1","Year 2","Year 3","Year 4","Year 5","Year 6","Year 7","Year 8","Year 9","Year 10"]
["GPI",null,"Escalation",{"$f":"D47","v":0},{"$f":"E63","v":0},{"$f":"E117*(1+$D$117)","v":0},0,0,0,0,0,0,0,0]
["Other Income",null,null,null,{"$f":"E64","v":0},0,0,0,0,0,0,0,0,0]
["Total Income",null,null,null,{"$f":"E117+E118","v":0},0,0,0,0,0,0,0,0,0]
["Less: Vacancy",null,null,{"$f":"D66","v":5.0000000000000044E-2},{"$f":"IF('Advanced Financial'!B33>0,(1-'Advanced Financial'!B33)*E119,$D$120*E119)","v":0},{"$f":"$D$120*F119","v":0},0,0,0,0,0,0,0,0]
["Less: Concessions, Market Loss",null,null,{"$f":"D67","v":0},{"$f":"$D$121*E119","v":0},0,0,0,0,0,0,0,0,0]
["EGI",null,null,null,{"$f":"E119-E120-E121","v":0},0,0,0,0,0,0,0,0,0]
["Less: Operating Costs",null,"Escalation",{"$f":"D49","v":0},{"$f":"E69","v":0},{"$f":"E123*(1+$D$123)","v":0},0,0,0,0,0,0,0,0]
["Less: Property Taxes",null,"Millage Rate",{"$f":"'Advanced Financial'!E63","v":0},{"$f":"$D17*$D124*'Advanced Financial'!$E64","v":0},{"$f":"$D17*$D124*'Advanced Financial'!$E64*(1+'Advanced Financial'!E86)","v":0},{"$f":"$D17*$D124*'Advanced Financial'!$E64*(1+'Advanced Financial'!E86)^2","v":0},{"$f":"$D17*$D124*'Advanced Financial'!$E64*(1+'Advanced Financial'!E86)^3","v":0},{"$f":"$D17*$D124*'Advanced Financial'!$E64*(1+'Advanced Financial'!E86)^4","v":0},{"$f":"$D17*$D124*'Advanced Financial'!$E64*(1+'Advanced Financial'!E86)^5","v":0},{"$f":"$D17*$D124*'Advanced Financial'!$E64*(1+'Advanced Financial'!E86)^6","v":0},{"$f":"$D17*$D124*'Advanced Financial'!$E64*(1+'Advanced Financial'!E86)^7","v":0},{"$f":"$D17*$D124*'Advanced Financial'!$E64*(1+'Advanced Financial'!E86)^8","v":0},{"$f":"$D17*$D124*'Advanced Financial'!$E64*(1+'Advanced Financial'!E86)^9","v":0}]
["Plus: Property Tax Abatement",null,null,null,{"$f":"IF(OR(BF_Subsidy=0,BF_Subsidy=\"\"),$D$13*'Advanced Financial'!$E64*$F8*'Gap Financing Options'!E17,0)","v":0},{"$f":"IF(OR(BF_Subsidy=0,BF_Subsidy=\"\"),$D$13*'Advanced Financial'!$E64*$F8*(1+$D$117)*'Gap Financing Options'!E18,0)","v":0},{"$f":"IF(OR(BF_Subsidy=0,BF_Subsidy=\"\"),$D$13*'Advanced Financial'!$E64*$F8*(1+$D$117)^2*'Gap Financing Options'!E19,0)","v":0},{"$f":"IF(OR(BF_Subsidy=0,BF_Subsidy=\"\"),$D$13*'Advanced Financial'!$E64*$F8*(1+$D$117)^3*'Gap Financing Options'!E20,0)","v":0},{"$f":"IF(OR(BF_Subsidy=0,BF_Subsidy=\"\"),$D$13*'Advanced Financial'!$E64*$F8*(1+$D$117)^4*'Gap Financing Options'!E21,0)","v":0},{"$f":"IF(OR(BF_Subsidy=0,BF_Subsidy=\"\"),$D$13*'Advanced Financial'!$E64*$F8*(1+$D$117)^5*'Gap Financing Options'!E22,0)","v":0},{"$f":"IF(OR(BF_Subsidy=0,BF_Subsidy=\"\"),$D$13*'Advanced Financial'!$E64*$F8*(1+$D$117)^6*'Gap Financing Options'!E23,0)","v":0},{"$f":"IF(OR(BF_Subsidy=0,BF_Subsidy=\"\"),$D$13*'Advanced Financial'!$E64*$F8*(1+$D$117)^7*'Gap Financing Options'!E24,0)","v":0},{"$f":"IF(OR(BF_Subsidy=0,BF_Subsidy=\"\"),$D$13*'Advanced Financial'!$E64*$F8*(1+$D$117)^8*'Gap Financing Options'!E25,0)","v":0},{"$f":"IF(OR(BF_Subsidy=0,BF_Subsidy=\"\"),$D$13*'Advanced Financial'!$E64*$F8*(1+$D$117)^9*'Gap Financing Options'!E26,0)","v":0}]
["Plus: Sales Tax Abatement",null,null,null,{"$f":"IF(OR(BF_Subsidy=0,BF_Subsidy=\"\"),$D$14*$E$61*$D$60*'Gap Financing Options'!E39,0)","v":0},{"$f":"IF(OR(BF_Subsidy=0,BF_Subsidy=\"\"),$D$14*$E$61*$D$60*(1+$D$117)*'Gap Financing Options'!E40,0)","v":0},{"$f":"IF(OR(BF_Subsidy=0,BF_Subsidy=\"\"),$D$14*$E$61*$D$60*(1+$D$117)^2*'Gap Financing Options'!E41,0)","v":0},{"$f":"IF(OR(BF_Subsidy=0,BF_Subsidy=\"\"),$D$14*$E$61*$D$60*(1+$D$117)^3*'Gap Financing Options'!E42,0)","v":0},{"$f":"IF(OR(BF_Subsidy=0,BF_Subsidy=\"\"),$D$14*$E$61*$D$60*(1+$D$117)^4*'Gap Financing Options'!E43,0)","v":0},{"$f":"IF(OR(BF_Subsidy=0,BF_Subsidy=\"\"),$D$14*$E$61*$D$60*(1+$D$117)^5*'Gap Financing Options'!E44,0)","v":0},{"$f":"IF(OR(BF_Subsidy=0,BF_Subsidy=\"\"),$D$14*$E$61*$D$60*(1+$D$117)^6*'Gap Financing Options'!E45,0)","v":0},{"$f":"IF(OR(BF_Subsidy=0,BF_Subsidy=\"\"),$D$14*$E$61*$D$60*(1+$D$117)^7*'Gap Financing Options'!E46,0)","v":0},{"$f":"IF(OR(BF_Subsidy=0,BF_Subsidy=\"\"),$D$14*$E$61*$D$60*(1+$D$117)^8*'Gap Financing Options'!E47,0)","v":0},{"$f":"IF(OR(BF_Subsidy=0,BF_Subsidy=\"\"),$D$14*$E$61*$D$60*(1+$D$117)^9*'Gap Financing Options'!E48,0)","v":0}]
["Plus: Retainage of Property & Sales Taxes",null,null,null,{"$f":"IF(OR(BF_Subsidy=0,BF_Subsidy=\"\"),'Gap Financing Options'!E54,0)","v":0},{"$f":"IF(OR(BF_Subsidy=0,BF_Subsidy=\"\"),('Gap Financing Options'!E55),0)","v":0},{"$f":"IF(OR(BF_Subsidy=0,BF_Subsidy=\"\"),('Gap Financing Options'!E56),0)","v":0},{"$f":"IF(OR(BF_Subsidy=0,BF_Subsidy=\"\"),'Gap Financing Options'!E57,0)","v":0},{"$f":"IF(OR(BF_Subsidy=0,BF_Subsidy=\"\"),'Gap Financing Options'!E58,0)","v":0},{"$f":"IF(OR(BF_Subsidy=0,BF_Subsidy=\"\"),'Gap Financing Options'!E59,0)","v":0},{"$f":"IF(OR(BF_Subsidy=0,BF_Subsidy=\"\"),'Gap Financing Options'!E60,0)","v":0},{"$f":"IF(OR(BF_Subsidy=0,BF_Subsidy=\"\"),'Gap Financing Options'!E61,0)","v":0},{"$f":"IF(OR(BF_Subsidy=0,BF_Subsidy=\"\"),'Gap Financing Options'!E62,0)","v":0},{"$f":"IF(OR(BF_Subsidy=0,BF_Subsidy=\"\"),'Gap Financing Options'!E63,0)","v":0}]
["Cash Throw Off to Public Partner",null,null,null,{"$f":"IF(OR(BF_Subsidy=0,BF_Subsidy=\"\"),-$E$109,0)","v":0},0,0,0,0,0,0,0,0,0]
["NOI",null,null,null,{"$f":"E122-E124-E123+E125+E126+E127+E128","v":0},{"$f":"F122-F124-F123+F125+F126+F127+F128","v":0},0,0,0,0,0,0,0,0]
[]
["Less: Debt Service",null,null,null,{"$f":"-$E$99","v":0},0,0,0,0,0,0,0,0,0]
["Net Cash Flow",null,null,null,{"$f":"E129-E131","v":0},0,0,0,0,0,0,0,0,0]
[]
["Cap Rate",null,null,null,{"$f":"IFERROR(E129/$E$101,0)","v":0},0,0,0,0,0,0,0,0,0]
["Cash on Cash Return (Equity Dividend Rate)",null,null,null,{"$f":"IFERROR(E132/$E$104,0)","v":0},{"$f":"IFERROR(F132/$E$104,0)","v":0},0,0,0,0,0,0,0,0]
[]
["Project Value",null,null,"Year 0","Year 1","Year 2","Year 3","Year 4","Year 5","Year 6","Year 7","Year 8","Year 9","Year 10"]
["Terminal Cap Rate, Gross Sales Price",null,null,null,{"$f":"D52","v":0},null,null,null,null,null,null,null,null,{"$f":"IFERROR(N129/E138,0)","v":0}]
["Net Sales = Price Less Sales Cost",null,null,null,{"$f":"D53","v":0},null,null,null,null,null,null,null,null,{"$f":"N138*(1-E139)","v":0}]
["Less Mortgage Balance",null,null,null,null,null,null,null,null,null,null,null,null,{"$f":"AA185","v":0}]
["Net Sales Proceeds",null,null,null,null,null,null,null,null,null,null,null,null,{"$f":"N139-N140","v":0}]
[]
[]
["IRR - Unleveraged (Project Cost)",null,null,"Year 0","Year 1","Year 2","Year 3","Year 4","Year 5","Year 6","Year 7","Year 8","Year 9","Year 10"]
["Total Investment",null,null,{"$f":"-E106","v":0}]
["Project NOI",null,null,null,{"$f":"E129","v":0},{"$f":"F129","v":0},0,0,0,0,0,0,0,0]
["Net Sales Price",null,null,null,null,null,null,null,null,null,null,null,null,{"$f":"N139","v":0}]
["Total",null,null,{"$f":"SUM(D145:D147)","v":0},{"$f":"SUM(E145:E147)","v":0},{"$f":"SUM(F145:F147)","v":0},0,0,0,0,0,0,0,0]
["IRR - Project Cost",null,null,null,null,null,null,null,null,null,null,null,null,{"$f":"IFERROR(IRR(D148:N148),0)","v":0}]
["NPV - Project Cost",null,null,null,null,null,null,null,null,null,null,null,null,{"$f":"NPV(L6,D148:N148)","v":0}]
[]
["IRR - Leveraged (Before Tax)",null,null,"Year 0","Year 1","Year 2","Year 3","Year 4","Year 5","Year 6","Year 7","Year 8","Year 9","Year 10"]
["Original Investment (Equity)",null,null,{"$f":"-E104","v":0}]
["Project Cash Flow",null,null,null,{"$f":"E132","v":0},0,0,0,0,0,0,0,0,0]
["Net Sales Proceeds",null,null,null,null,null,null,null,null,null,null,null,null,{"$f":"N141","v":0}]
["Total",null,null,{"$f":"SUM(D153:D155)","v":0},0,0,0,0,0,0,0,0,0,0]
["IRR - Equity",null,null,null,null,null,null,null,null,null,null,null,null,{"$f":"IFERROR(IRR(D156:N156),0)","v":0}]
["NPV - Equity",null,null,null,null,null,null,null,null,null,null,null,null,{"$f":"NPV(L7,D156:N156)","v":0}]
[]
["IRR - Public Participation",null,null,"Year 0","Year 1","Year 2","Year 3","Year 4","Year 5","Year 6","Year 7","Year 8","Year 9","Year 10"]
["Original Investment (Equity)",null,null,{"$f":"-(E108+(E93*E111))","v":0}]
["Mezzanine Financing",null,null,null,{"$f":"-$E$96","v":0},0,0,0,0,0,0,0,0,0]
["Cash Throw Off",null,null,null,{"$f":"$E$109","v":0},0,0,0,0,0,0,0,0,0]
["Sale Proceeds",null,null,null,null,null,null,null,null,null,null,null,null,{"$f":"N155*E110","v":0}]
["Loan Balance",null,null,null,null,null,null,null,null,null,null,null,null,{"$f":"V185*E111","v":0}]
["Total",null,null,{"$f":"SUM(D161:D165)","v":0},{"$f":"SUM(E161:E165)","v":0},0,0,0,0,0,0,0,0,0]
["IRR - Equity",null,null,null,null,null,null,null,null,null,null,null,null,{"$f":"IFERROR(IRR(D166:N166),0)","v":0}]
["NPV - Equity",null,null,null,null,null,null,null,null,null,null,null,null,{"$f":"NPV(E112,D166:N166)","v":0}]
[]
[]
[]
["DEBT SERVICE MORTIZATION TABLES"]
["Primary Debt Amortization",null,null,null,null,"Low Interest Loan",null,null,null,null,"Total Debt Amortization",null,null,null,null,"Annual Debt Service Summary - Primary Debt",null,null,null,null,"Annual Debt Service Summary - Secondary Debt",null,null,null,null,"Annual Debt Service Summary - Total Debt"]
[]
["Period","Balance","Payment","Interest","Principal","Period","Balance","Payment","Interest","Principal","Period","Balance","Payment","Interest","Principal","Year","Balance","Payment","Interest","Principal","Year","Balance","Payment","Interest","Principal","Year","Balance","Payment","Interest","Principal"]
[0,{"$f":"E87","v":0},null,null,null,0,{"$f":"E93","v":0},null,null,null,0,{"$f":"B176+G176","v":0},null,null,null,1,{"$f":"B188","v":0},{"$f":"SUM(C177:C188)","v":0},{"$f":"SUM(D177:D188)","v":0},{"$f":"SUM(E177:E188)","v":0},1,{"$f":"G188","v":0},{"$f":"SUM(H177:H188)","v":0},{"$f":"SUM(I177:I188)","v":0},{"$f":"SUM(J177:J188)","v":0},1,{"$f":"Q176+V176","v":0},{"$f":"R176+W176","v":0},{"$f":"S176+X176","v":0},{"$f":"T176+Y176","v":0}]
[1,{"$f":"B176-E177","v":0},{"$f":"-$E$90/12","v":0},{"$f":"B176*$E$88/12","v":0},{"$f":"C177-D177","v":0},1,{"$f":"G176-J177","v":0},{"$f":"-$E$96/12","v":0},{"$f":"G176*$E$94/12","v":0},{"$f":"H177-I177","v":0},1,{"$f":"G177+B177","v":0},0,0,0,2,{"$f":"B200","v":0},{"$f":"SUM(C189:C200)","v":0},{"$f":"SUM(D189:D200)","v":0},{"$f":"SUM(E189:E200)","v":0},2,{"$f":"G200","v":0},{"$f":"SUM(H189:H200)","v":0},{"$f":"SUM(I189:I200)","v":0},{"$f":"SUM(J189:J200)","v":0},2,{"$f":"Q177+V177","v":0},{"$f":"R177+W177","v":0},{"$f":"S177+X177","v":0},{"$f":"T177+Y177","v":0}]
[{"$f":"A177+1","v":2},0,0,{"$f":"B177*$E$88/12","v":0},0,{"$f":"F177+1","v":2},0,0,0,0,{"$f":"K177+1","v":2},0,0,0,0,3,{"$f":"B212","v":0},{"$f":"SUM(C201:C212)","v":0},{"$f":"SUM(D201:D212)","v":0},{"$f":"SUM(E201:E212)","v":0},3,{"$f":"G212","v":0},{"$f":"SUM(H201:H212)","v":0},{"$f":"SUM(I201:I212)","v":0},{"$f":"SUM(J201:J212)","v":0},3,0,0,0,0]
[3,0,0,{"$f":"B178*$E$88/12","v":0},0,3,0,0,0,0,3,0,0,0,0,4,{"$f":"B224","v":0},{"$f":"SUM(C213:C224)","v":0},{"$f":"SUM(D213:D224)","v":0},{"$f":"SUM(E213:E224)","v":0},4,{"$f":"G224","v":0},{"$f":"SUM(H213:H224)","v":0},{"$f":"SUM(I213:I224)","v":0},{"$f":"SUM(J213:J224)","v":0},4,0,0,0,0]
[4,0,0,{"$f":"B179*$E$88/12","v":0},0,4,0,0,0,0,4,0,0,0,0,5,{"$f":"B236","v":0},{"$f":"SUM(C225:C236)","v":0},{"$f":"SUM(D225:D236)","v":0},{"$f":"SUM(E225:E236)","v":0},5,{"$f":"G236","v":0},{"$f":"SUM(H225:H236)","v":0},{"$f":"SUM(I225:I236)","v":0},{"$f":"SUM(J225:J236)","v":0},5,0,0,0,0]
[5,0,0,0,0,5,0,0,0,0,5,0,0,0,0,6,{"$f":"B248","v":0},{"$f":"SUM(C237:C248)","v":0},{"$f":"SUM(D237:D248)","v":0},{"$f":"SUM(E237:E248)","v":0},6,{"$f":"G248","v":0},{"$f":"SUM(H237:H248)","v":0},{"$f":"SUM(I237:I248)","v":0},{"$f":"SUM(J237:J248)","v":0},6,0,0,0,0]
[6,0,0,0,0,6,0,0,0,0,6,0,0,0,0,7,{"$f":"B260","v":0},{"$f":"SUM(C249:C260)","v":0},{"$f":"SUM(D249:D260)","v":0},{"$f":"SUM(E249:E260)","v":0},7,{"$f":"G260","v":0},{"$f":"SUM(H249:H260)","v":0},{"$f":"SUM(I249:I260)","v":0},{"$f":"SUM(J249:J260)","v":0},7,0,0,0,0]
[7,0,0,0,0,7,0,0,0,0,7,0,0,0,0,8,{"$f":"B272","v":0},{"$f":"SUM(C261:C272)","v":0},{"$f":"SUM(D261:D272)","v":0},{"$f":"SUM(E261:E272)","v":0},8,{"$f":"G272","v":0},{"$f":"SUM(H261:H272)","v":0},{"$f":"SUM(I261:I272)","v":0},{"$f":"SUM(J261:J272)","v":0},8,0,0,0,0]
[8,0,0,0,0,8,0,0,0,0,8,0,0,0,0,9,{"$f":"B284","v":0},{"$f":"SUM(C273:C284)","v":0},{"$f":"SUM(D273:D284)","v":0},{"$f":"SUM(E273:E284)","v":0},9,{"$f":"G284","v":0},{"$f":"SUM(H273:H284)","v":0},{"$f":"SUM(I273:I284)","v":0},{"$f":"SUM(J273:J284)","v":0},9,0,0,0,0]
[9,0,0,0,0,9,0,0,0,0,9,0,0,0,0,10,{"$f":"B296","v":0},{"$f":"SUM(C285:C296)","v":0},{"$f":"SUM(D285:D296)","v":0},{"$f":"SUM(E285:E296)","v":0},10,{"$f":"G296","v":0},{"$f":"SUM(H285:H296)","v":0},{"$f":"SUM(I285:I296)","v":0},{"$f":"SUM(J285:J296)","v":0},10,{"$f":"Q185+V185","v":0},{"$f":"R185+W185","v":0},{"$f":"S185+X185","v":0},{"$f":"T185+Y185","v":0}]
[10,0,0,0,0,10,0,0,0,0,10,0,0,0,0]
[11,0,0,0,0,11,0,0,0,0,11,0,0,0,0]
[12,0,0,0,0,12,0,0,0,0,12,0,0,0,0]
[13,0,0,0,0,13,0,0,0,0,13,0,0,0,0]
[14,0,0,0,0,14,0,0,0,0,14,0,0,0,0]
[15,0,0,0,0,15,0,0,0,0,15,0,0,0,0]
[16,0,0,0,0,16,0,0,0,0,16,0,0,0,0]
[17,0,0,0,0,17,0,0,0,0,17,0,0,0,0]
[18,0,0,0,0,18,0,0,0,0,18,0,0,0,0]
[19,0,0,0,0,19,0,0,0,0,19,0,0,0,0]
[20,0,0,0,0,20,0,0,0,0,20,0,0,0,0]
[21,0,0,0,0,21,0,0,0,0,21,0,0,0,0]
[22,0,0,0,0,22,0,0,0,0,22,0,0,0,0]
[23,0,0,0,0,23,0,0,0,0,23,0,0,0,0]
[24,0,0,0,0,24,0,0,0,0,24,0,0,0,0]
[25,0,0,0,0,25,0,0,0,0,25,0,0,0,0]
[26,0,0,0,0,26,0,0,0,0,26,0,0,0,0]
[27,0,0,0,0,27,0,0,0,0,27,0,0,0,0]
[28,0,0,0,0,28,0,0,0,0,28,0,0,0,0]
[29,0,0,0,0,29,0,0,0,0,29,0,0,0,0]
[30,0,0,0,0,30,0,0,0,0,30,0,0,0,0]
[31,0,0,0,0,31,0,0,0,0,31,0,0,0,0]
[32,0,0,0,0,32,0,0,0,0,32,0,0,0,0]
[33,0,0,0,0,33,0,0,0,0,33,0,0,0,0]
[34,0,0,0,0,34,0,0,0,0,34,0,0,0,0]
[35,0,0,0,0,35,0,0,0,0,35,0,0,0,0]
[36,0,0,0,0,36,0,0,0,0,36,0,0,0,0]
[37,0,0,0,0,37,0,0,0,0,37,0,0,0,0]
[38,0,0,0,0,38,0,0,0,0,38,0,0,0,0]
[39,0,0,0,0,39,0,0,0,0,39,0,0,0,0]
[40,0,0,0,0,40,0,0,0,0,40,0,0,0,0]
[41,0,0,0,0,41,0,0,0,0,41,0,0,0,0]
[42,0,0,0,0,42,0,0,0,0,42,0,0,0,0]
[43,0,0,0,0,43,0,0,0,0,43,0,0,0,0]
[44,0,0,0,0,44,0,0,0,0,44,0,0,0,0]
[45,0,0,0,0,45,0,0,0,0,45,0,0,0,0]
[46,0,0,0,0,46,0,0,0,0,46,0,0,0,0]
[47,0,0,0,0,47,0,0,0,0,47,0,0,0,0]
[48,0,0,0,0,48,0,0,0,0,48,0,0,0,0]
[49,0,0,0,0,49,0,0,0,0,49,0,0,0,0]
[50,0,0,0,0,50,0,0,0,0,50,0,0,0,0]
[51,0,0,0,0,51,0,0,0,0,51,0,0,0,0]
[52,0,0,0,0,52,0,0,0,0,52,0,0,0,0]
[53,0,0,0,0,53,0,0,0,0,53,0,0,0,0]
[54,0,0,0,0,54,0,0,0,0,54,0,0,0,0]
[55,0,0,0,0,55,0,0,0,0,55,0,0,0,0]
[56,0,0,0,0,56,0,0,0,0,56,0,0,0,0]
[57,0,0,0,0,57,0,0,0,0,57,0,0,0,0]
[58,0,0,0,0,58,0,0,0,0,58,0,0,0,0]
[59,0,0,0,0,59,0,0,0,0,59,0,0,0,0]
[60,0,0,0,0,60,0,0,0,0,60,0,0,0,0]
[61,0,0,0,0,61,0,0,0,0,61,0,0,0,0]
[62,0,0,0,0,62,0,0,0,0,62,0,0,0,0]
[63,0,0,0,0,63,0,0,0,0,63,0,0,0,0]
[64,0,0,0,0,64,0,0,0,0,64,0,0,0,{"$f":"J240+E240","v":0}]
[65,{"$f":"B240-E241","v":0},{"$f":"-$E$90/12","v":0},0,{"$f":"C241-D241","v":0},65,{"$f":"G240-J241","v":0},{"$f":"-$E$96/12","v":0},{"$f":"G240*$E$94/12","v":0},{"$f":"H241-I241","v":0},65,{"$f":"G241+B241","v":0},0,0,0]
[{"$f":"A241+1","v":66},0,0,0,0,{"$f":"F241+1","v":66},0,0,0,0,{"$f":"K241+1","v":66},0,0,0,0]
[67,0,0,0,0,67,0,0,0,0,67,0,0,0,0]
[68,0,0,{"$f":"B243*$E$88/12","v":0},0,68,0,0,0,0,68,0,0,0,0]
[69,0,0,0,0,69,0,0,0,0,69,0,0,0,0]
[70,0,0,0,0,70,0,0,0,0,70,0,0,0,0]
[71,0,0,0,0,71,0,0,0,0,71,0,0,0,0]
[72,0,0,0,0,72,0,0,0,0,72,0,0,0,0]
[73,0,0,0,0,73,0,0,0,0,73,0,0,0,0]
[74,0,0,0,0,74,0,0,0,0,74,0,0,0,0]
[75,0,0,0,0,75,0,0,0,0,75,0,0,0,0]
[76,0,0,0,0,76,0,0,0,0,76,0,0,0,0]
[77,0,0,0,0,77,0,0,0,0,77,0,0,0,0]
[78,0,0,0,0,78,0,0,0,0,78,0,0,0,0]
[79,0,0,0,0,79,0,0,0,0,79,0,0,0,0]
[80,0,0,0,0,80,0,0,0,0,80,0,0,0,0]
[81,0,0,0,0,81,0,0,0,0,81,0,0,0,0]
[82,0,0,0,0,82,0,0,0,0,82,0,0,0,0]
[83,0,0,0,0,83,0,0,0,0,83,0,0,0,0]
[84,0,0,0,0,84,0,0,0,0,84,0,0,0,0]
[85,0,0,0,0,85,0,0,0,0,85,0,0,0,0]
[86,0,0,0,0,86,0,0,0,0,86,0,0,0,0]
[87,0,0,0,0,87,0,0,0,0,87,0,0,0,0]
[88,0,0,0,0,88,0,0,0,0,88,0,0,0,0]
[89,0,0,0,0,89,0,0,0,0,89,0,0,0,0]
[90,0,0,0,0,90,0,0,0,0,90,0,0,0,0]
[91,0,0,0,0,91,0,0,0,0,91,0,0,0,0]
[92,0,0,0,0,92,0,0,0,0,92,0,0,0,0]
[93,0,0,0,0,93,0,0,0,0,93,0,0,0,0]
[94,0,0,0,0,94,0,0,0,0,94,0,0,0,0]
[95,0,0,0,0,95,0,0,0,0,95,0,0,0,0]
[96,0,0,0,0,96,0,0,0,0,96,0,0,0,0]
[97,0,0,0,0,97,0,0,0,0,97,0,0,0,0]
[98,0,0,0,0,98,0,0,0,0,98,0,0,0,0]
[99,0,0,0,0,99,0,0,0,0,99,0,0,0,0]
[100,0,0,0,0,100,0,0,0,0,100,0,0,0,0]
[101,0,0,0,0,101,0,0,0,0,101,0,0,0,0]
[102,0,0,0,0,102,0,0,0,0,102,0,0,0,0]
[103,0,0,0,0,103,0,0,0,0,103,0,0,0,0]
[104,0,0,0,0,104,0,0,0,0,104,0,0,0,0]
[105,0,0,0,0,105,0,0,0,0,105,0,0,0,0]
[106,0,0,0,0,106,0,0,0,0,106,0,0,0,0]
[107,0,0,0,0,107,0,0,0,0,107,0,0,0,0]
[108,0,0,0,0,108,0,0,0,0,108,0,0,0,0]
[109,0,0,0,0,109,0,0,0,0,109,0,0,0,0]
[110,0,0,0,0,110,0,0,0,0,110,0,0,0,0]
[111,0,0,0,0,111,0,0,0,0,111,0,0,0,0]
[112,0,0,0,0,112,0,0,0,0,112,0,0,0,0]
[113,0,0,0,0,113,0,0,0,0,113,0,0,0,0]
[114,0,0,0,0,114,0,0,0,0,114,0,0,0,0]
[115,0,0,0,0,115,0,0,0,0,115,0,0,0,0]
[116,0,0,0,0,116,0,0,0,0,116,0,0,0,0]
[117,0,0,0,0,117,0,0,0,0,117,0,0,0,0]
[118,0,0,0,0,118,0,0,0,0,118,0,0,0,0]
[119,0,0,0,0,119,0,0,0,0,119,0,0,0,0]
[120,0,0,0,0,120,0,0,0,0,120,0,0,0,0]
[121,0,0,0,0,121,0,0,0,0,121,0,0,0,0]
[122,0,0,0,0,122,0,0,0,0,122,0,0,0,0]
[123,0,0,0,0,123,0,0,0,0,123,0,0,0,0]
[124,0,0,0,0,124,0,0,0,0,124,0,0,0,0]
[125,0,0,0,0,125,0,0,0,0,125,0,0,0,0]
[126,0,0,0,0,126,0,0,0,0,126,0,0,0,0]
[127,0,0,0,0,127,0,0,0,0,127,0,0,0,0]
[128,0,0,0,0,128,0,0,0,0,128,0,0,0,0]
[129,{"$f":"B304-E305","v":0},{"$f":"-$E$90/12","v":0},0,{"$f":"C305-D305","v":0},129,{"$f":"G304-J305","v":0},{"$f":"-$E$96/12","v":0},{"$f":"G304*$E$94/12","v":0},{"$f":"H305-I305","v":0},129,{"$f":"G305+B305","v":0},0,0,0]
[{"$f":"A305+1","v":130},0,0,0,0,{"$f":"F305+1","v":130},0,0,0,0,{"$f":"K305+1","v":130},0,0,0,0]
[131,0,0,0,0,131,0,0,0,0,131,0,0,0,0]
[132,0,0,{"$f":"B307*$E$88/12","v":0},0,132,0,0,0,0,132,0,0,0,0]
[133,0,0,0,0,133,0,0,0,0,133,0,0,0,0]
[134,0,0,0,0,134,0,0,0,0,134,0,0,0,0]
[135,0,0,0,0,135,0,0,0,0,135,0,0,0,0]
[136,0,0,0,0,136,0,0,0,0,136,0,0,0,0]
[137,0,0,0,0,137,0,0,0,0,137,0,0,0,0]
[138,0,0,0,0,138,0,0,0,0,138,0,0,0,0]
[139,0,0,0,0,139,0,0,0,0,139,0,0,0,0]
[140,0,0,0,0,140,0,0,0,0,140,0,0,0,0]
[141,0,0,0,0,141,0,0,0,0,141,0,0,0,0]
[142,0,0,0,0,142,0,0,0,0,142,0,0,0,0]
[143,0,0,0,0,143,0,0,0,0,143,0,0,0,0]
[144,0,0,0,0,144,0,0,0,0,144,0,0,0,0]
[145,0,0,0,0,145,0,0,0,0,145,0,0,0,0]
[146,0,0,0,0,146,0,0,0,0,146,0,0,0,0]
[147,0,0,0,0,147,0,0,0,0,147,0,0,0,0]
[148,0,0,0,0,148,0,0,0,0,148,0,0,0,0]
[149,0,0,0,0,149,0,0,0,0,149,0,0,0,0]
[150,0,0,0,0,150,0,0,0,0,150,0,0,0,0]
[151,0,0,0,0,151,0,0,0,0,151,0,0,0,0]
[152,0,0,0,0,152,0,0,0,0,152,0,0,0,0]
[153,0,0,0,0,153,0,0,0,0,153,0,0,0,0]
[154,0,0,0,0,154,0,0,0,0,154,0,0,0,0]
[155,0,0,0,0,155,0,0,0,0,155,0,0,0,0]
[156,0,0,0,0,156,0,0,0,0,156,0,0,0,0]
[157,0,0,0,0,157,0,0,0,0,157,0,0,0,0]
[158,0,0,0,0,158,0,0,0,0,158,0,0,0,0]
[159,0,0,0,0,159,0,0,0,0,159,0,0,0,0]
[160,0,0,0,0,160,0,0,0,0,160,0,0,0,0]
[161,0,0,0,0,161,0,0,0,0,161,0,0,0,0]
[162,0,0,0,0,162,0,0,0,0,162,0,0,0,0]
[163,0,0,0,0,163,0,0,0,0,163,0,0,0,0]
[164,0,0,0,0,164,0,0,0,0,164,0,0,0,0]
[165,0,0,0,0,165,0,0,0,0,165,0,0,0,0]
[166,0,0,0,0,166,0,0,0,0,166,0,0,0,0]
[167,0,0,0,0,167,0,0,0,0,167,0,0,0,0]
[168,0,0,0,0,168,0,0,0,0,168,0,0,0,0]
[169,0,0,0,0,169,0,0,0,0,169,0,0,0,0]
[170,0,0,0,0,170,0,0,0,0,170,0,0,0,0]
[171,0,0,0,0,171,0,0,0,0,171,0,0,0,0]
[172,0,0,0,0,172,0,0,0,0,172,0,0,0,0]
[173,0,0,0,0,173,0,0,0,0,173,0,0,0,0]
[174,0,0,0,0,174,0,0,0,0,174,0,0,0,0]
[175,0,0,0,0,175,0,0,0,0,175,0,0,0,0]
[176,0,0,0,0,176,0,0,0,0,176,0,0,0,0]
[177,0,0,0,0,177,0,0,0,0,177,0,0,0,0]
[178,0,0,0,0,178,0,0,0,0,178,0,0,0,0]
[179,0,0,0,0,179,0,0,0,0,179,0,0,0,0]
[180,0,0,0,0,180,0,0,0,0,180,0,0,0,0]
[181,0,0,0,0,181,0,0,0,0,181,0,0,0,0]
[182,0,0,0,0,182,0,0,0,0,182,0,0,0,0]
[183,0,0,0,0,183,0,0,0,0,183,0,0,0,0]
[184,0,0,0,0,184,0,0,0,0,184,0,0,0,0]
[185,0,0,0,0,185,0,0,0,0,185,0,0,0,0]
[186,0,0,0,0,186,0,0,0,0,186,0,0,0,0]
[187,0,0,0,0,187,0,0,0,0,187,0,0,0,0]
[188,0,0,0,0,188,0,0,0,0,188,0,0,0,0]
[189,0,0,0,0,189,0,0,0,0,189,0,0,0,0]
[190,0,0,0,0,190,0,0,0,0,190,0,0,0,0]
[191,0,0,0,0,191,0,0,0,0,191,0,0,0,0]
[192,0,0,0,0,192,0,0,0,0,192,0,0,0,{"$f":"J368+E368","v":0}]
[193,{"$f":"B368-E369","v":0},{"$f":"-$E$90/12","v":0},0,{"$f":"C369-D369","v":0},193,{"$f":"G368-J369","v":0},{"$f":"-$E$96/12","v":0},{"$f":"G368*$E$94/12","v":0},{"$f":"H369-I369","v":0},193,{"$f":"G369+B369","v":0},0,0,0]
[{"$f":"A369+1","v":194},0,0,0,0,{"$f":"F369+1","v":194},0,0,0,0,{"$f":"K369+1","v":194},0,0,0,0]
[195,0,0,0,0,195,0,0,0,0,195,0,0,0,0]
[196,0,0,{"$f":"B371*$E$88/12","v":0},0,196,0,0,0,0,196,0,0,0,0]
[197,0,0,0,0,197,0,0,0,0,197,0,0,0,0]
[198,0,0,0,0,198,0,0,0,0,198,0,0,0,0]
[199,0,0,0,0,199,0,0,0,0,199,0,0,0,0]
[200,0,0,0,0,200,0,0,0,0,200,0,0,0,0]
[201,0,0,0,0,201,0,0,0,0,201,0,0,0,0]
[202,0,0,0,0,202,0,0,0,0,202,0,0,0,0]
[203,0,0,0,0,203,0,0,0,0,203,0,0,0,0]
[204,0,0,0,0,204,0,0,0,0,204,0,0,0,0]
[205,0,0,0,0,205,0,0,0,0,205,0,0,0,0]
[206,0,0,0,0,206,0,0,0,0,206,0,0,0,0]
[207,0,0,0,0,207,0,0,0,0,207,0,0,0,0]
[208,0,0,0,0,208,0,0,0,0,208,0,0,0,0]
[209,0,0,0,0,209,0,0,0,0,209,0,0,0,0]
[210,0,0,0,0,210,0,0,0,0,210,0,0,0,0]
[211,0,0,0,0,211,0,0,0,0,211,0,0,0,0]
[212,0,0,0,0,212,0,0,0,0,212,0,0,0,0]
[213,0,0,0,0,213,0,0,0,0,213,0,0,0,0]
[214,0,0,0,0,214,0,0,0,0,214,0,0,0,0]
[215,0,0,0,0,215,0,0,0,0,215,0,0,0,0]
[216,0,0,0,0,216,0,0,0,0,216,0,0,0,0]
[217,0,0,0,0,217,0,0,0,0,217,0,0,0,0]
[218,0,0,0,0,218,0,0,0,0,218,0,0,0,0]
[219,0,0,0,0,219,0,0,0,0,219,0,0,0,0]
[220,0,0,0,0,220,0,0,0,0,220,0,0,0,0]
[221,0,0,0,0,221,0,0,0,0,221,0,0,0,0]
[222,0,0,0,0,222,0,0,0,0,222,0,0,0,0]
[223,0,0,0,0,223,0,0,0,0,223,0,0,0,0]
[224,0,0,0,0,224,0,0,0,0,224,0,0,0,0]
[225,0,0,0,0,225,0,0,0,0,225,0,0,0,0]
[226,0,0,0,0,226,0,0,0,0,226,0,0,0,0]
[227,0,0,0,0,227,0,0,0,0,227,0,0,0,0]
[228,0,0,0,0,228,0,0,0,0,228,0,0,0,0]
[229,0,0,0,0,229,0,0,0,0,229,0,0,0,0]
[230,0,0,0,0,230,0,0,0,0,230,0,0,0,0]
[231,0,0,0,0,231,0,0,0,0,231,0,0,0,0]
[232,0,0,0,0,232,0,0,0,0,232,0,0,0,0]
[233,0,0,0,0,233,0,0,0,0,233,0,0,0,0]
[234,0,0,0,0,234,0,0,0,0,234,0,0,0,0]
[235,0,0,0,0,235,0,0,0,0,235,0,0,0,0]
[236,0,0,0,0,236,0,0,0,0,236,0,0,0,0]
[237,0,0,0,0,237,0,0,0,0,237,0,0,0,0]
[238,0,0,0,0,238,0,0,0,0,238,0,0,0,0]
[239,0,0,0,0,239,0,0,0,0,239,0,0,0,0]
[240,0,0,0,0,240,0,0,0,0,240,0,0,0,0]
[241,0,0,0,0,241,0,0,0,0,241,0,0,0,0]
[242,0,0,0,0,242,0,0,0,0,242,0,0,0,0]
[243,0,0,0,0,243,0,0,0,0,243,0,0,0,0]
[244,0,0,0,0,244,0,0,0,0,244,0,0,0,0]
[245,0,0,0,0,245,0,0,0,0,245,0,0,0,0]
[246,0,0,0,0,246,0,0,0,0,246,0,0,0,0]
[247,0,0,0,0,247,0,0,0,0,247,0,0,0,0]
[248,0,0,0,0,248,0,0,0,0,248,0,0,0,0]
[249,0,0,0,0,249,0,0,0,0,249,0,0,0,0]
[250,0,0,0,0,250,0,0,0,0,250,0,0,0,0]
[251,0,0,0,0,251,0,0,0,0,251,0,0,0,0]
[252,0,0,0,0,252,0,0,0,0,252,0,0,0,0]
[253,0,0,0,0,253,0,0,0,0,253,0,0,0,0]
[254,0,0,0,0,254,0,0,0,0,254,0,0,0,0]
[255,0,0,0,0,255,0,0,0,0,255,0,0,0,0]
[256,0,0,0,0,256,0,0,0,0,256,0,0,0,0]
[257,{"$f":"B432-E433","v":0},{"$f":"-$E$90/12","v":0},0,{"$f":"C433-D433","v":0},257,{"$f":"G432-J433","v":0},{"$f":"-$E$96/12","v":0},{"$f":"G432*$E$94/12","v":0},{"$f":"H433-I433","v":0},257,{"$f":"G433+B433","v":0},0,0,0]
[{"$f":"A433+1","v":258},0,0,0,0,{"$f":"F433+1","v":258},0,0,0,0,{"$f":"K433+1","v":258},0,0,0,0]
[259,0,0,0,0,259,0,0,0,0,259,0,0,0,0]
[260,0,0,{"$f":"B435*$E$88/12","v":0},0,260,0,0,0,0,260,0,0,0,0]
[261,0,0,0,0,261,0,0,0,0,261,0,0,0,0]
[262,0,0,0,0,262,0,0,0,0,262,0,0,0,0]
[263,0,0,0,0,263,0,0,0,0,263,0,0,0,0]
[264,0,0,0,0,264,0,0,0,0,264,0,0,0,0]
[265,0,0,0,0,265,0,0,0,0,265,0,0,0,0]
[266,0,0,0,0,266,0,0,0,0,266,0,0,0,0]
[267,0,0,0,0,267,0,0,0,0,267,0,0,0,0]
[268,0,0,0,0,268,0,0,0,0,268,0,0,0,0]
[269,0,0,0,0,269,0,0,0,0,269,0,0,0,0]
[270,0,0,0,0,270,0,0,0,0,270,0,0,0,0]
[271,0,0,0,0,271,0,0,0,0,271,0,0,0,0]
[272,0,0,0,0,272,0,0,0,0,272,0,0,0,0]
[273,0,0,0,0,273,0,0,0,0,273,0,0,0,0]
[274,0,0,0,0,274,0,0,0,0,274,0,0,0,0]
[275,0,0,0,0,275,0,0,0,0,275,0,0,0,0]
[276,0,0,0,0,276,0,0,0,0,276,0,0,0,0]
[277,0,0,0,0,277,0,0,0,0,277,0,0,0,0]
[278,0,0,0,0,278,0,0,0,0,278,0,0,0,0]
[279,0,0,0,0,279,0,0,0,0,279,0,0,0,0]
[280,0,0,0,0,280,0,0,0,0,280,0,0,0,0]
[281,0,0,0,0,281,0,0,0,0,281,0,0,0,0]
[282,0,0,0,0,282,0,0,0,0,282,0,0,0,0]
[283,0,0,0,0,283,0,0,0,0,283,0,0,0,0]
[284,0,0,0,0,284,0,0,0,0,284,0,0,0,0]
[285,0,0,0,0,285,0,0,0,0,285,0,0,0,0]
[286,0,0,0,0,286,0,0,0,0,286,0,0,0,0]
[287,0,0,0,0,287,0,0,0,0,287,0,0,0,0]
[288,0,0,0,0,288,0,0,0,0,288,0,0,0,0]
[289,0,0,0,0,289,0,0,0,0,289,0,0,0,0]
[290,0,0,0,0,290,0,0,0,0,290,0,0,0,0]
[291,0,0,0,0,291,0,0,0,0,291,0,0,0,0]
[292,0,0,0,0,292,0,0,0,0,292,0,0,0,0]
[293,0,0,0,0,293,0,0,0,0,293,0,0,0,0]
[294,0,0,0,0,294,0,0,0,0,294,0,0,0,0]
[295,0,0,0,0,295,0,0,0,0,295,0,0,0,0]
[296,0,0,0,0,296,0,0,0,0,296,0,0,0,0]
[297,0,0,0,0,297,0,0,0,0,297,0,0,0,0]
[298,0,0,0,0,298,0,0,0,0,298,0,0,0,0]
[299,0,0,0,0,299,0,0,0,0,299,0,0,0,0]
[300,0,0,0,0,300,0,0,0,0,300,0,0,0,0]
[301,0,0,0,0,301,0,0,0,0,301,0,0,0,0]
[302,0,0,0,0,302,0,0,0,0,302,0,0,0,0]
[303,0,0,0,0,303,0,0,0,0,303,0,0,0,0]
[304,0,0,0,0,304,0,0,0,0,304,0,0,0,0]
[305,0,0,0,0,305,0,0,0,0,305,0,0,0,0]
[306,0,0,0,0,306,0,0,0,0,306,0,0,0,0]
[307,0,0,0,0,307,0,0,0,0,307,0,0,0,0]
[308,0,0,0,0,308,0,0,0,0,308,0,0,0,0]
[309,0,0,0,0,309,0,0,0,0,309,0,0,0,0]
[310,0,0,0,0,310,0,0,0,0,310,0,0,0,0]
[311,0,0,0,0,311,0,0,0,0,311,0,0,0,0]
[312,0,0,0,0,312,0,0,0,0,312,0,0,0,0]
[313,0,0,0,0,313,0,0,0,0,313,0,0,0,0]
[314,0,0,0,0,314,0,0,0,0,314,0,0,0,0]
[315,0,0,0,0,315,0,0,0,0,315,0,0,0,0]
[316,0,0,0,0,316,0,0,0,0,316,0,0,0,0]
[317,0,0,0,0,317,0,0,0,0,317,0,0,0,0]
[318,0,0,0,0,318,0,0,0,0,318,0,0,0,0]
[319,0,0,0,0,319,0,0,0,0,319,0,0,0,0]
[320,0,0,0,0,320,0,0,0,0,320,0,0,0,{"$f":"J496+E496","v":0}]
[321,{"$f":"B496-E497","v":0},{"$f":"-$E$90/12","v":0},0,{"$f":"C497-D497","v":0},321,{"$f":"G496-J497","v":0},{"$f":"-$E$96/12","v":0},{"$f":"G496*$E$94/12","v":0},{"$f":"H497-I497","v":0},321,{"$f":"G497+B497","v":0},0,0,0]
[{"$f":"A497+1","v":322},0,0,0,0,{"$f":"F497+1","v":322},0,0,0,0,{"$f":"K497+1","v":322},0,0,0,0]
[323,0,0,0,0,323,0,0,0,0,323,0,0,0,0]
[324,0,0,{"$f":"B499*$E$88/12","v":0},0,324,0,0,0,0,324,0,0,0,0]
[325,0,0,0,0,325,0,0,0,0,325,0,0,0,0]
[326,0,0,0,0,326,0,0,0,0,326,0,0,0,0]
[327,0,0,0,0,327,0,0,0,0,327,0,0,0,0]
[328,0,0,0,0,328,0,0,0,0,328,0,0,0,0]
[329,0,0,0,0,329,0,0,0,0,329,0,0,0,0]
[330,0,0,0,0,330,0,0,0,0,330,0,0,0,0]
[331,0,0,0,0,331,0,0,0,0,331,0,0,0,0]
[332,0,0,0,0,332,0,0,0,0,332,0,0,0,0]
[333,0,0,0,0,333,0,0,0,0,333,0,0,0,0]
[334,0,0,0,0,334,0,0,0,0,334,0,0,0,0]
[335,0,0,0,0,335,0,0,0,0,335,0,0,0,0]
[336,0,0,0,0,336,0,0,0,0,336,0,0,0,0]
[337,0,0,0,0,337,0,0,0,0,337,0,0,0,0]
[338,0,0,0,0,338,0,0,0,0,338,0,0,0,0]
[339,0,0,0,0,339,0,0,0,0,339,0,0,0,0]
[340,0,0,0,0,340,0,0,0,0,340,0,0,0,0]
[341,0,0,0,0,341,0,0,0,0,341,0,0,0,0]
[342,0,0,0,0,342,0,0,0,0,342,0,0,0,0]
[343,0,0,0,0,343,0,0,0,0,343,0,0,0,0]
[344,0,0,0,0,344,0,0,0,0,344,0,0,0,0]
[345,0,0,0,0,345,0,0,0,0,345,0,0,0,0]
[346,0,0,0,0,346,0,0,0,0,346,0,0,0,0]
[347,0,0,0,0,347,0,0,0,0,347,0,0,0,0]
[348,0,0,0,0,348,0,0,0,0,348,0,0,0,0]
[349,0,0,0,0,349,0,0,0,0,349,0,0,0,0]
[350,0,0,0,0,350,0,0,0,0,350,0,0,0,0]
[351,0,0,0,0,351,0,0,0,0,351,0,0,0,0]
[352,0,0,0,0,352,0,0,0,0,352,0,0,0,0]
[353,0,0,0,0,353,0,0,0,0,353,0,0,0,0]
[354,0,0,0,0,354,0,0,0,0,354,0,0,0,0]
[355,0,0,0,0,355,0,0,0,0,355,0,0,0,0]
[356,0,0,0,0,356,0,0,0,0,356,0,0,0,0]
[357,0,0,0,0,357,0,0,0,0,357,0,0,0,0]
[358,0,0,0,0,358,0,0,0,0,358,0,0,0,0]
[359,0,0,0,0,359,0,0,0,0,359,0,0,0,0]
[360,0,0,0,0,360,0,0,0,0,360,0,0,0,0]

{"sheet":"Office","index":22,"n_rows":533,"n_cols":30,"rows_kept":533,"cut":false,"hidden":true,"merged":[]}
["ROI Template - Office"]
[]
["Leveraging Tools",null,null,"Summary","User override ","TOTAL",null,"Investment Targets and Performance"]
["Tax Credits net to project",null,null,{"$f":"'Gap Financing Options'!F122","v":0},0,{"$f":"IF('Basic Financial'!$B$34=0,D4,0)","v":0},null,"Performance Indicator",null,null,null,"Target","Actual","NPV"]
["Fee Reductions",null,null,{"$f":"'Gap Financing Options'!F88","v":0},0,{"$f":"IF('Basic Financial'!$B$34=0,D5,0)","v":0},null,"Cash-on-Cash After Year 3",null,null,null,{"$f":"'Advanced Financial'!F67","v":0.1},{"$f":"G132","v":0}]
["Grants",null,null,{"$f":"'Gap Financing Options'!F98","v":0},0,{"$f":"IF('Basic Financial'!$B$34=0,D6,('Basic Financial'!$B$34*SUM('Development Costs'!F43,'Development Costs'!F45,'Development Costs'!F46)))","v":0},null,"IRR on Project Cost (Unleveraged Return)",null,null,null,{"$f":"'Advanced Financial'!F68","v":0.1},{"$f":"N146","v":0},{"$f":"N147","v":0}]
["Total Development Offsets (Contributions to Equity)",null,null,null,null,{"$f":"SUM(F4:F6)","v":0},null,"IRR on Investor Equity (Leveraged Return Before Tax)",null,null,null,{"$f":"'Advanced Financial'!F69","v":0.25},{"$f":"N154","v":0},{"$f":"N155","v":0}]
["Net Development Costs",null,null,null,null,{"$f":"(D56-F7)","v":0},null,"Debt Service Coverage Ratio (Year 3)",null,null,null,{"$f":"'Advanced Financial'!F70","v":1.25},{"$f":"IFERROR(G126/G128,0)","v":0}]
[null,null,null,null,null,null,null,"IRR on Public Participation",null,null,null,{"$f":"E110","v":0.05},{"$f":"N164","v":0},{"$f":"N165","v":0}]
[]
[]
[]
["Local Property Tax Rate Available for abatement",null,null,{"$f":"'Gap Financing Options'!F15","v":0}]
["Local Sales Tax Rate Available for abatement",null,null,{"$f":"'Gap Financing Options'!F37","v":0}]
[]
["Net Operating Income Analysis"]
["Total Development Costs",null,null,{"$f":"-SUM('Development Costs'!E43,'Development Costs'!E45:E46)","v":0}]
["Project Feature",null,null,"Project","Rent"]
["Total project size, square feet",null,null,{"$f":"SUM('Physical Outputs'!B31,'Physical Outputs'!B33:B34)","v":0},{"$f":"IFERROR((('Basic Financial'!B59*'Physical Outputs'!B31)+('Basic Financial'!B61*'Physical Outputs'!B33)+('Basic Financial'!B62*'Physical Outputs'!B34))/SUM('Physical Outputs'!B31,'Physical Outputs'!B33:B34),0)","v":0},"per square foot/year","summed sq ft from off, pub and edu; took weighted average rent for all 3 as well"]
["Other Income (vending, fines)",null,null,{"$f":"'Advanced Financial'!F80","v":0}]
["Less: Vacancy",null,null,{"$f":"1-'Advanced Financial'!C34","v":5.0000000000000044E-2}]
["Less: Concessions, Bad Debt",null,null,{"$f":"'Advanced Financial'!F81","v":0}]
["Less: Operating Costs/sq.ft.",null,null,{"$f":"IFERROR((('Advanced Financial'!F82*E60)/'Physical Outputs'!C31),0)","v":0}]
[]
["Initial Project Value Analysis"]
["Property Value (Year 1)"]
["Going in Cap Rate",null,null,{"$f":"'Advanced Financial'!F83","v":0}]
[]
["Debt Financing"]
["Primary Debt"]
["Maximum LTV",null,null,{"$f":"'Advanced Financial'!F91","v":0.7}]
["Rate",null,null,{"$f":"'Advanced Financial'!F92","v":0.06}]
["Amortization Period, Years",null,null,{"$f":"'Advanced Financial'!F93","v":25}]
["Public Leveraging Loan"]
["Maximum LTV",null,null,{"$f":"IF(D42=1,'Gap Financing Options'!F69,0)","v":0}]
["Rate",null,null,{"$f":"IF(D42=1,'Gap Financing Options'!F70,0)","v":0}]
["Amortization Period, Years",null,null,{"$f":"IF(D42=1,'Gap Financing Options'!F71,0)","v":0}]
["Public Participation"]
["Capital Investment",null,null,{"$f":"IF(D42=1,'Gap Financing Options'!F75,0)","v":0}]
["Annual Cash Throw Off",null,null,{"$f":"IF(D42=1,'Gap Financing Options'!F76,0)","v":0}]
["Share of Net Sales Price",null,null,{"$f":"IF(D42=1,'Gap Financing Options'!F77,0)","v":0}]
["Public Leveraging Loan Included in Analysis?(1=Yes; 0=No)",null,null,{"$f":"'Gap Financing Options'!F68","v":0}]
["Target IRR",null,null,{"$f":"'Advanced Financial'!F71","v":0.05}]
[]
["Operating Statement"]
["GPI",null,"Escalation",{"$f":"'Advanced Financial'!F84","v":0}]
["EGI"]
["Less: Operating Costs",null,"Escalation",{"$f":"'Advanced Financial'!F85","v":0}]
[]
["Project Value",null,null,"Year 1"]
["Terminal Cap Rate, Gross Sales Price",null,null,{"$f":"'Advanced Financial'!F87","v":0}]
["Net Sales = Price Less Sales Cost",null,null,{"$f":"'Advanced Financial'!F88","v":0}]
[]
[]
["Net Operating Income Analysis"]
["Total Development Costs",null,null,{"$f":"D17","v":0}]
["Development Costs Per Sq Ft",null,null,{"$f":"IFERROR(D56/D59,0)","v":0}]
["Project Feature",null,null,"Project","Rent"]
["Total project size, square feet",null,null,{"$f":"D19","v":0},{"$f":"E19","v":0},"per square foot/year"]
["Gross Potential Rent  (GPI)",null,null,null,{"$f":"D59*E59","v":0}]
["Other Income (vending, fines)",null,null,{"$f":"D20","v":0},{"$f":"D61*E60","v":0}]
["Total Income",null,null,null,{"$f":"E60+E61","v":0}]
["Less: Vacancy",null,null,{"$f":"D21","v":5.0000000000000044E-2},{"$f":"E62*D63","v":0}]
["Less: Concessions, Bad Debt",null,null,{"$f":"D22","v":0},{"$f":"E62*D64","v":0}]
["Effective Gross Income  (EGI)",null,null,null,{"$f":"E62-E63-E64","v":0}]
["Less: Operating Costs/sq.ft.",null,null,{"$f":"D23","v":0},{"$f":"D66*D59","v":0}]
["Net Operating Income",null,null,null,{"$f":"E65-E66","v":0}]
[]
["Initial Project Value Analysis"]
["CAP RATE (Yield to Costs)",null,null,{"$f":"IF(F8=0,0,E67/F8)","v":0}]
["Debt Service",null,null,{"$f":"IFERROR(-E97,0)","v":0}]
["Cash Flow",null,null,{"$f":"E67-D71","v":0}]
["Return on Equity (Year 1)",null,null,{"$f":"IF(E102=0,0,D72/E102)","v":0}]
["Property Value (Year 1)"]
["NOI",null,null,{"$f":"E67","v":0}]
["Going in Cap Rate",null,null,{"$f":"D27","v":0}]
["Project Market Value",null,null,{"$f":"IF(D76=0,0,D75/D76)","v":0}]
["Net Project Value",null,null,{"$f":"D77-D56","v":0}]
[]
[]
["Debt Financing"]
["Primary Debt"]
["Total Value",null,null,null,{"$f":"D17","v":0}]
["Maximum LTV",null,null,{"$f":"D31","v":0.7},{"$f":"E83*D84","v":0}]
["Imputed Loan Amount",null,null,null,{"$f":"E84","v":0}]
["Rate",null,null,null,{"$f":"D32","v":0.06}]
["Amortization Period, Years",null,null,null,{"$f":"D33","v":25}]
["Annual Debt Service (Amortized)",null,null,null,{"$f":"IFERROR((PMT(E86/12,E87*12,E85)*12),0)","v":0}]
["Public Leveraging Loan"]
["Maximum LTV",null,null,{"$f":"IF(D42=1,D35,0)","v":0},{"$f":"IF(E83*D90>'Development Costs'!F43*'Gap Financing Options'!B79,'Development Costs'!F43*'Gap Financing Options'!B79,E83*D90)","v":0}]
["Imputed Loan Amount",null,null,null,{"$f":"IF(AND(D42=1,'Basic Financial'!B34=0),E90+'Gap Financing Options'!F74,0)","v":0}]
["Rate",null,null,null,{"$f":"IF(D42=1,D36,0)","v":0}]
["Amortization Period, Years",null,null,null,{"$f":"IF(D42=1,D37,0)","v":0}]
["Annual Debt Service (Amortized)",null,null,null,{"$f":"IFERROR((PMT(E92/12,E93*12,E91)*12),0)","v":0}]
[]
["Total Debt",null,null,null,{"$f":"E85+E91","v":0}]
["Total Debt Service",null,null,null,{"$f":"E88+E94","v":0}]
["Summary"]
["Total Development Costs",null,null,null,{"$f":"D56","v":0}]
["Equity Required",null,null,null,{"$f":"IF(E99-E96<0,1,E99-E96)","v":0}]
["Total Development Offsets (Contributions to Equity)",null,null,null,{"$f":"F7","v":0}]
["Net Equity Required",null,null,null,{"$f":"E100-E101","v":0}]
["Total Project Cost",null,null,null,{"$f":"E99","v":0}]
["Total Project Cost After Development Offsets",null,null,null,{"$f":"E103-E101","v":0}]
["Public Participation"]
["Capital Investment",null,null,null,{"$f":"D39","v":0}]
["Annual Cash Throw Off",null,null,null,{"$f":"D40","v":0}]
["Share of Net Sales Price",null,null,null,{"$f":"D41","v":0}]
["Public Leveraging Loan Included in Analysis? ",null,null,"(1=Yes; 0=No)",{"$f":"D42","v":0}]
["Target IRR",null,null,null,{"$f":"D43","v":0.05}]
[]
[]
["Operating Statement",null,null,null,"Year 1","Year 2","Year 3","Year 4","Year 5","Year 6","Year 7","Year 8","Year 9","Year 10"]
["GPI",null,"Escalation",{"$f":"D46","v":0},{"$f":"E60","v":0},{"$f":"E114*(1+$D$114)","v":0},0,0,0,0,0,0,0,0]
["Other Income",null,null,null,{"$f":"E61","v":0},0,0,0,0,0,0,0,0,0]
["Total Income",null,null,null,{"$f":"E114+E115","v":0},0,0,0,0,0,0,0,0,0]
["Less: Vacancy",null,null,{"$f":"D63","v":5.0000000000000044E-2},{"$f":"IF('Advanced Financial'!B34>0,(1-'Advanced Financial'!B34)*E116,$D$117*E116)","v":0},{"$f":"$D$117*F116","v":0},0,0,0,0,0,0,0,0]
["Less: Concessions, Market Loss",null,null,{"$f":"D64","v":0},{"$f":"$D$118*E116","v":0},0,0,0,0,0,0,0,0,0]
["EGI",null,null,null,{"$f":"E116-E117-E118","v":0},0,0,0,0,0,0,0,0,0]
["Less: Operating Costs",null,"Escalation",{"$f":"D48","v":0},{"$f":"E66","v":0},{"$f":"E120*(1+$D$120)","v":0},0,0,0,0,0,0,0,0]
["Less: Property Taxes",null,"Millage Rate",{"$f":"'Advanced Financial'!F63","v":9.6266900000000002E-3},{"$f":"$D17*$D121*'Advanced Financial'!$F64","v":0},{"$f":"$D17*$D121*'Advanced Financial'!$F64*(1+'Advanced Financial'!F86)","v":0},{"$f":"$D17*$D121*'Advanced Financial'!$F64*(1+'Advanced Financial'!F86)^2","v":0},{"$f":"$D17*$D121*'Advanced Financial'!$F64*(1+'Advanced Financial'!F86)^3","v":0},{"$f":"$D17*$D121*'Advanced Financial'!$F64*(1+'Advanced Financial'!F86)^4","v":0},{"$f":"$D17*$D121*'Advanced Financial'!$F64*(1+'Advanced Financial'!F86)^5","v":0},{"$f":"$D17*$D121*'Advanced Financial'!$F64*(1+'Advanced Financial'!F86)^6","v":0},{"$f":"$D17*$D121*'Advanced Financial'!$F64*(1+'Advanced Financial'!F86)^7","v":0},{"$f":"$D17*$D121*'Advanced Financial'!$F64*(1+'Advanced Financial'!F86)^8","v":0},{"$f":"$D17*$D121*'Advanced Financial'!$F64*(1+'Advanced Financial'!F86)^9","v":0}]
["Plus: Property Tax Abatement",null,null,null,{"$f":"IF(OR(BF_Subsidy=0,BF_Subsidy=\"\"),$D$13*'Advanced Financial'!$F64*$F8*'Gap Financing Options'!F17,0)","v":0},{"$f":"IF(OR(BF_Subsidy=0,BF_Subsidy=\"\"),$D$13*'Advanced Financial'!$F64*$F8*(1+$D$114)*'Gap Financing Options'!F18,0)","v":0},{"$f":"IF(OR(BF_Subsidy=0,BF_Subsidy=\"\"),$D$13*'Advanced Financial'!$F64*$F8*(1+$D$114)^2*'Gap Financing Options'!F19,0)","v":0},{"$f":"IF(OR(BF_Subsidy=0,BF_Subsidy=\"\"),$D$13*'Advanced Financial'!$F64*$F8*(1+$D$114)^3*'Gap Financing Options'!F20,0)","v":0},{"$f":"IF(OR(BF_Subsidy=0,BF_Subsidy=\"\"),$D$13*'Advanced Financial'!$F64*$F8*(1+$D$114)^4*'Gap Financing Options'!F21,0)","v":0},{"$f":"IF(OR(BF_Subsidy=0,BF_Subsidy=\"\"),$D$13*'Advanced Financial'!$F64*$F8*(1+$D$114)^5*'Gap Financing Options'!F22,0)","v":0},{"$f":"IF(OR(BF_Subsidy=0,BF_Subsidy=\"\"),$D$13*'Advanced Financial'!$F64*$F8*(1+$D$114)^6*'Gap Financing Options'!F23,0)","v":0},{"$f":"IF(OR(BF_Subsidy=0,BF_Subsidy=\"\"),$D$13*'Advanced Financial'!$F64*$F8*(1+$D$114)^7*'Gap Financing Options'!F24,0)","v":0},{"$f":"IF(OR(BF_Subsidy=0,BF_Subsidy=\"\"),$D$13*'Advanced Financial'!$F64*$F8*(1+$D$114)^8*'Gap Financing Options'!F25,0)","v":0},{"$f":"IF(OR(BF_Subsidy=0,BF_Subsidy=\"\"),$D$13*'Advanced Financial'!$F64*$F8*(1+$D$114)^9*'Gap Financing Options'!F26,0)","v":0}]
["Plus Sales Tax Abatement",null,null,null,{"$f":"IF(OR(BF_Subsidy=0,BF_Subsidy=\"\"),'Gap Financing Options'!F39*$D$14*E116,0)","v":0},{"$f":"IF(OR(BF_Subsidy=0,BF_Subsidy=\"\"),'Gap Financing Options'!F40*$D$14*F116,0)","v":0},{"$f":"IF(OR(BF_Subsidy=0,BF_Subsidy=\"\"),'Gap Financing Options'!F41*$D$14*G116,0)","v":0},{"$f":"IF(OR(BF_Subsidy=0,BF_Subsidy=\"\"),'Gap Financing Options'!F42*$D$14*H116,0)","v":0},{"$f":"IF(OR(BF_Subsidy=0,BF_Subsidy=\"\"),'Gap Financing Options'!F43*$D$14*I116,0)","v":0},{"$f":"IF(OR(BF_Subsidy=0,BF_Subsidy=\"\"),'Gap Financing Options'!F44*$D$14*J116,0)","v":0},{"$f":"IF(OR(BF_Subsidy=0,BF_Subsidy=\"\"),'Gap Financing Options'!F45*$D$14*K116,0)","v":0},{"$f":"IF(OR(BF_Subsidy=0,BF_Subsidy=\"\"),'Gap Financing Options'!F46*$D$14*L116,0)","v":0},{"$f":"IF(OR(BF_Subsidy=0,BF_Subsidy=\"\"),'Gap Financing Options'!F47*$D$14*M116,0)","v":0},{"$f":"IF(OR(BF_Subsidy=0,BF_Subsidy=\"\"),'Gap Financing Options'!F48*$D$14*N116,0)","v":0}]
["Plus TIF + IRA Retainage of Taxes",null,null,null,{"$f":"IF(OR(BF_Subsidy=0,BF_Subsidy=\"\"),'Gap Financing Options'!F54,0)","v":0},{"$f":"IF(OR(BF_Subsidy=0,BF_Subsidy=\"\"),'Gap Financing Options'!F55,0)","v":0},{"$f":"IF(OR(BF_Subsidy=0,BF_Subsidy=\"\"),'Gap Financing Options'!F56,0)","v":0},{"$f":"IF(OR(BF_Subsidy=0,BF_Subsidy=\"\"),'Gap Financing Options'!F57,0)","v":0},{"$f":"IF(OR(BF_Subsidy=0,BF_Subsidy=\"\"),'Gap Financing Options'!F58,0)","v":0},{"$f":"IF(OR(BF_Subsidy=0,BF_Subsidy=\"\"),'Gap Financing Options'!F59,0)","v":0},{"$f":"IF(OR(BF_Subsidy=0,BF_Subsidy=\"\"),'Gap Financing Options'!F60,0)","v":0},{"$f":"IF(OR(BF_Subsidy=0,BF_Subsidy=\"\"),'Gap Financing Options'!F61,0)","v":0},{"$f":"IF(OR(BF_Subsidy=0,BF_Subsidy=\"\"),'Gap Financing Options'!F62,0)","v":0},{"$f":"IF(OR(BF_Subsidy=0,BF_Subsidy=\"\"),'Gap Financing Options'!F63,0)","v":0}]
["Cash Throw Off to Public Partner",null,null,null,{"$f":"IF(OR(BF_Subsidy=0,BF_Subsidy=\"\"),-$E$107,0)","v":0},0,0,0,0,0,0,0,0,0]
["NOI",null,null,null,{"$f":"E119-Industrial!E121-E120+Industrial!E122+E123+E124+E125","v":0},{"$f":"F119-Industrial!F121-F120+Industrial!F122+F123+F124+F125","v":0},{"$f":"G119-Industrial!G121-G120+Industrial!G122+G123+G124+G125","v":0},{"$f":"H119-Industrial!H121-H120+Industrial!H122+H123+H124+H125","v":0},{"$f":"I119-Industrial!I121-I120+Industrial!I122+I123+I124+I125","v":0},{"$f":"J119-Industrial!J121-J120+Industrial!J122+J123+J124+J125","v":0},{"$f":"K119-Industrial!K121-K120+Industrial!K122+K123+K124+K125","v":0},{"$f":"L119-Industrial!L121-L120+Industrial!L122+L123+L124+L125","v":0},{"$f":"M119-Industrial!M121-M120+Industrial!M122+M123+M124+M125","v":0},{"$f":"N119-Industrial!N121-N120+Industrial!N122+N123+N124+N125","v":0}]
[]
["Less: Debt Service",null,null,null,{"$f":"-$E$97","v":0},0,0,0,0,0,0,0,0,0]
["Net Cash Flow",null,null,null,{"$f":"E126-E128","v":0},0,0,0,0,0,0,0,0,0]
[]
["Cap Rate",null,null,null,{"$f":"IFERROR(E126/$E$99,0)","v":0},0,0,0,0,0,0,0,0,0]
["Cash on Cash Return (Equity Dividend Rate)",null,null,null,{"$f":"IFERROR(E129/$E$102,0)","v":0},{"$f":"IFERROR(F129/$E$102,0)","v":0},0,0,0,0,0,0,0,0]
[]
["Project Value",null,null,"Year 0","Year 1","Year 2","Year 3","Year 4","Year 5","Year 6","Year 7","Year 8","Year 9","Year 10"]
["Terminal Cap Rate, Gross Sales Price",null,null,null,{"$f":"D51","v":0},null,null,null,null,null,null,null,null,{"$f":"IFERROR(N126/E135,0)","v":0}]
["Net Sales = Price Less Sales Cost",null,null,null,{"$f":"D52","v":0},null,null,null,null,null,null,null,null,{"$f":"N135*(1-E136)","v":0}]
["Less Mortgage Balance",null,null,null,null,null,null,null,null,null,null,null,null,{"$f":"AA182","v":0}]
["Net Sales Proceeds",null,null,null,null,null,null,null,null,null,null,null,null,{"$f":"N136-N137","v":0}]
[]
[]
["IRR - Unleveraged (Project Cost)",null,null,"Year 0","Year 1","Year 2","Year 3","Year 4","Year 5","Year 6","Year 7","Year 8","Year 9","Year 10"]
["Total Investment",null,null,{"$f":"-E104","v":0}]
["Project NOI",null,null,null,{"$f":"E126","v":0},{"$f":"F126","v":0},0,0,0,0,0,0,0,0]
["Net Sales Price",null,null,null,null,null,null,null,null,null,null,null,null,{"$f":"N136","v":0}]
["Total",null,null,{"$f":"SUM(D142:D144)","v":0},{"$f":"SUM(E142:E144)","v":0},{"$f":"SUM(F142:F144)","v":0},0,0,0,0,0,0,0,0]
["IRR - Project Cost",null,null,null,null,null,null,null,null,null,null,null,null,{"$f":"IFERROR(IRR(D145:N145),0)","v":0}]
["NPV - Project Cost",null,null,null,null,null,null,null,null,null,null,null,null,{"$f":"NPV(L6,D145:N145)","v":0}]
[]
["IRR - Leveraged (Before Tax)",null,null,"Year 0","Year 1","Year 2","Year 3","Year 4","Year 5","Year 6","Year 7","Year 8","Year 9","Year 10"]
["Original Investment (Equity)",null,null,{"$f":"-E102","v":0}]
["Project Cash Flow",null,null,null,{"$f":"E129","v":0},0,0,0,0,0,0,0,0,0]
["Net Sales Proceeds",null,null,null,null,null,null,null,null,null,null,null,null,{"$f":"N138","v":0}]
["Total",null,null,{"$f":"SUM(D150:D152)","v":0},0,0,0,0,0,0,0,0,0,0]
["IRR - Equity",null,null,null,null,null,null,null,null,null,null,null,null,{"$f":"IFERROR(IRR(D153:N153),0)","v":0}]
["NPV - Equity",null,null,null,null,null,null,null,null,null,null,null,null,{"$f":"NPV(L7,D153:N153)","v":0}]
[]
["IRR - Public Participation",null,null,"Year 0","Year 1","Year 2","Year 3","Year 4","Year 5","Year 6","Year 7","Year 8","Year 9","Year 10"]
["Original Investment (Equity)",null,null,{"$f":"-(E106+(E91*E109))","v":0}]
["Mezzanine Financing",null,null,null,{"$f":"-$E$94","v":0},0,0,0,0,0,0,0,0,0]
["Cash Throw Off",null,null,null,{"$f":"$E$107","v":0},0,0,0,0,0,0,0,0,0]
["Sale Proceeds",null,null,null,null,null,null,null,null,null,null,null,null,{"$f":"N152*E108","v":0}]
["Loan Balance",null,null,null,null,null,null,null,null,null,null,null,null,{"$f":"V182*E109","v":0}]
["Total",null,null,{"$f":"SUM(D158:D162)","v":0},{"$f":"SUM(E158:E162)","v":0},0,0,0,0,0,0,0,0,0]
["IRR - Equity",null,null,null,null,null,null,null,null,null,null,null,null,{"$f":"IFERROR(IRR(D163:N163),0)","v":0}]
["NPV - Equity",null,null,null,null,null,null,null,null,null,null,null,null,{"$f":"NPV(E110,D163:N163)","v":0}]
[]
[]
[]
["DEBT SERVICE MORTIZATION TABLES"]
["Primary Debt Amortization",null,null,null,null,"Low Interest Loan",null,null,null,null,"Total Debt Amortization",null,null,null,null,"Annual Debt Service Summary - Primary Debt",null,null,null,null,"Annual Debt Service Summary - Secondary Debt",null,null,null,null,"Annual Debt Service Summary - Total Debt"]
[]
["Period","Balance","Payment","Interest","Principal","Period","Balance","Payment","Interest","Principal","Period","Balance","Payment","Interest","Principal","Year","Balance","Payment","Interest","Principal","Year","Balance","Payment","Interest","Principal","Year","Balance","Payment","Interest","Principal"]
[0,{"$f":"E85","v":0},null,null,null,0,{"$f":"E91","v":0},null,null,null,0,{"$f":"B173+G173","v":0},null,null,null,1,{"$f":"B185","v":0},{"$f":"SUM(C174:C185)","v":0},{"$f":"SUM(D174:D185)","v":0},{"$f":"SUM(E174:E185)","v":0},1,{"$f":"G185","v":0},{"$f":"SUM(H174:H185)","v":0},{"$f":"SUM(I174:I185)","v":0},{"$f":"SUM(J174:J185)","v":0},1,{"$f":"Q173+V173","v":0},{"$f":"R173+W173","v":0},0,{"$f":"T173+Y173","v":0}]
[1,{"$f":"B173-E174","v":0},{"$f":"-$E$88/12","v":0},{"$f":"B173*$E$86/12","v":0},{"$f":"C174-D174","v":0},1,{"$f":"G173-J174","v":0},{"$f":"-$E$94/12","v":0},{"$f":"G173*$E$92/12","v":0},{"$f":"H174-I174","v":0},1,{"$f":"G174+B174","v":0},0,0,0,2,{"$f":"B197","v":0},{"$f":"SUM(C186:C197)","v":0},{"$f":"SUM(D186:D197)","v":0},{"$f":"SUM(E186:E197)","v":0},2,{"$f":"G197","v":0},{"$f":"SUM(H186:H197)","v":0},{"$f":"SUM(I186:I197)","v":0},{"$f":"SUM(J186:J197)","v":0},2,{"$f":"Q174+V174","v":0},0,0,{"$f":"T174+Y174","v":0}]
[{"$f":"A174+1","v":2},0,0,{"$f":"B174*$E$86/12","v":0},0,{"$f":"F174+1","v":2},0,0,0,0,{"$f":"K174+1","v":2},0,0,0,0,3,{"$f":"B209","v":0},{"$f":"SUM(C198:C209)","v":0},{"$f":"SUM(D198:D209)","v":0},{"$f":"SUM(E198:E209)","v":0},3,{"$f":"G209","v":0},{"$f":"SUM(H198:H209)","v":0},{"$f":"SUM(I198:I209)","v":0},{"$f":"SUM(J198:J209)","v":0},3,0,0,0,0]
[3,0,0,0,0,3,0,0,0,0,3,0,0,0,0,4,{"$f":"B221","v":0},{"$f":"SUM(C210:C221)","v":0},{"$f":"SUM(D210:D221)","v":0},{"$f":"SUM(E210:E221)","v":0},4,{"$f":"G221","v":0},{"$f":"SUM(H210:H221)","v":0},{"$f":"SUM(I210:I221)","v":0},{"$f":"SUM(J210:J221)","v":0},4,0,0,0,0]
[4,0,0,0,0,4,0,0,0,0,4,0,0,0,0,5,{"$f":"B233","v":0},{"$f":"SUM(C222:C233)","v":0},{"$f":"SUM(D222:D233)","v":0},{"$f":"SUM(E222:E233)","v":0},5,{"$f":"G233","v":0},{"$f":"SUM(H222:H233)","v":0},{"$f":"SUM(I222:I233)","v":0},{"$f":"SUM(J222:J233)","v":0},5,0,0,0,0]
[5,0,0,0,0,5,0,0,0,0,5,0,0,0,0,6,{"$f":"B245","v":0},{"$f":"SUM(C234:C245)","v":0},{"$f":"SUM(D234:D245)","v":0},{"$f":"SUM(E234:E245)","v":0},6,{"$f":"G245","v":0},{"$f":"SUM(H234:H245)","v":0},{"$f":"SUM(I234:I245)","v":0},{"$f":"SUM(J234:J245)","v":0},6,0,0,0,0]
[6,0,0,0,0,6,0,0,0,0,6,0,0,0,0,7,{"$f":"B257","v":0},{"$f":"SUM(C246:C257)","v":0},{"$f":"SUM(D246:D257)","v":0},{"$f":"SUM(E246:E257)","v":0},7,{"$f":"G257","v":0},{"$f":"SUM(H246:H257)","v":0},{"$f":"SUM(I246:I257)","v":0},{"$f":"SUM(J246:J257)","v":0},7,0,0,0,0]
[7,0,0,0,0,7,0,0,0,0,7,0,0,0,0,8,{"$f":"B269","v":0},{"$f":"SUM(C258:C269)","v":0},{"$f":"SUM(D258:D269)","v":0},{"$f":"SUM(E258:E269)","v":0},8,{"$f":"G269","v":0},{"$f":"SUM(H258:H269)","v":0},{"$f":"SUM(I258:I269)","v":0},{"$f":"SUM(J258:J269)","v":0},8,0,0,0,0]
[8,0,0,0,0,8,0,0,0,0,8,0,0,0,0,9,{"$f":"B281","v":0},{"$f":"SUM(C270:C281)","v":0},{"$f":"SUM(D270:D281)","v":0},{"$f":"SUM(E270:E281)","v":0},9,{"$f":"G281","v":0},{"$f":"SUM(H270:H281)","v":0},{"$f":"SUM(I270:I281)","v":0},{"$f":"SUM(J270:J281)","v":0},9,0,0,0,0]
[9,0,0,0,0,9,0,0,0,0,9,0,0,0,0,10,{"$f":"B293","v":0},{"$f":"SUM(C282:C293)","v":0},{"$f":"SUM(D282:D293)","v":0},{"$f":"SUM(E282:E293)","v":0},10,{"$f":"G293","v":0},{"$f":"SUM(H282:H293)","v":0},{"$f":"SUM(I282:I293)","v":0},{"$f":"SUM(J282:J293)","v":0},10,{"$f":"Q182+V182","v":0},0,0,{"$f":"T182+Y182","v":0}]
[10,0,0,0,0,10,0,0,0,0,10,0,0,0,0]
[11,0,0,0,0,11,0,0,0,0,11,0,0,0,0]
[12,0,0,0,0,12,0,0,0,0,12,0,0,0,0]
[13,0,0,0,0,13,0,0,0,0,13,0,0,0,0]
[14,0,0,0,0,14,0,0,0,0,14,0,0,0,0]
[15,0,0,0,0,15,0,0,0,0,15,0,0,0,0]
[16,0,0,0,0,16,0,0,0,0,16,0,0,0,0]
[17,0,0,0,0,17,0,0,0,0,17,0,0,0,0]
[18,0,0,0,0,18,0,0,0,0,18,0,0,0,0]
[19,0,0,0,0,19,0,0,0,0,19,0,0,0,0]
[20,0,0,0,0,20,0,0,0,0,20,0,0,0,0]
[21,0,0,0,0,21,0,0,0,0,21,0,0,0,0]
[22,0,0,0,0,22,0,0,0,0,22,0,0,0,0]
[23,0,0,0,0,23,0,0,0,0,23,0,0,0,0]
[24,0,0,0,0,24,0,0,0,0,24,0,0,0,0]
[25,0,0,0,0,25,0,0,0,0,25,0,0,0,0]
[26,0,0,0,0,26,0,0,0,0,26,0,0,0,0]
[27,0,0,0,0,27,0,0,0,0,27,0,0,0,0]
[28,0,0,0,0,28,0,0,0,0,28,0,0,0,0]
[29,0,0,0,0,29,0,0,0,0,29,0,0,0,0]
[30,0,0,0,0,30,0,0,0,0,30,0,0,0,0]
[31,0,0,0,0,31,0,0,0,0,31,0,0,0,0]
[32,0,0,0,0,32,0,0,0,0,32,0,0,0,0]
[33,0,0,0,0,33,0,0,0,0,33,0,0,0,0]
[34,0,0,0,0,34,0,0,0,0,34,0,0,0,0]
[35,0,0,0,0,35,0,0,0,0,35,0,0,0,0]
[36,0,0,0,0,36,0,0,0,0,36,0,0,0,0]
[37,0,0,0,0,37,0,0,0,0,37,0,0,0,0]
[38,0,0,0,0,38,0,0,0,0,38,0,0,0,0]
[39,0,0,0,0,39,0,0,0,0,39,0,0,0,0]
[40,0,0,0,0,40,0,0,0,0,40,0,0,0,0]
[41,0,0,0,0,41,0,0,0,0,41,0,0,0,0]
[42,0,0,0,0,42,0,0,0,0,42,0,0,0,0]
[43,0,0,0,0,43,0,0,0,0,43,0,0,0,0]
[44,0,0,0,0,44,0,0,0,0,44,0,0,0,0]
[45,0,0,0,0,45,0,0,0,0,45,0,0,0,0]
[46,0,0,0,0,46,0,0,0,0,46,0,0,0,0]
[47,0,0,0,0,47,0,0,0,0,47,0,0,0,0]
[48,0,0,0,0,48,0,0,0,0,48,0,0,0,0]
[49,0,0,0,0,49,0,0,0,0,49,0,0,0,0]
[50,0,0,0,0,50,0,0,0,0,50,0,0,0,0]
[51,0,0,0,0,51,0,0,0,0,51,0,0,0,0]
[52,0,0,0,0,52,0,0,0,0,52,0,0,0,0]
[53,0,0,0,0,53,0,0,0,0,53,0,0,0,0]
[54,0,0,0,0,54,0,0,0,0,54,0,0,0,0]
[55,0,0,0,0,55,0,0,0,0,55,0,0,0,0]
[56,0,0,0,0,56,0,0,0,0,56,0,0,0,0]
[57,0,0,0,0,57,0,0,0,0,57,0,0,0,0]
[58,0,0,0,0,58,0,0,0,0,58,0,0,0,0]
[59,0,0,0,0,59,0,0,0,0,59,0,0,0,0]
[60,0,0,0,0,60,0,0,0,0,60,0,0,0,0]
[61,0,0,0,0,61,0,0,0,0,61,0,0,0,0]
[62,0,0,0,0,62,0,0,0,0,62,0,0,0,0]
[63,0,0,0,0,63,0,0,0,0,63,0,0,0,0]
[64,0,0,0,0,64,0,0,0,0,64,0,0,0,{"$f":"J237+E237","v":0}]
[65,{"$f":"B237-E238","v":0},{"$f":"-$E$88/12","v":0},0,{"$f":"C238-D238","v":0},65,{"$f":"G237-J238","v":0},{"$f":"-$E$94/12","v":0},{"$f":"G237*$E$92/12","v":0},{"$f":"H238-I238","v":0},65,{"$f":"G238+B238","v":0},0,0,0]
[{"$f":"A238+1","v":66},0,0,{"$f":"B238*$E$86/12","v":0},0,{"$f":"F238+1","v":66},0,0,0,0,{"$f":"K238+1","v":66},0,0,0,0]
[67,0,0,0,0,67,0,0,0,0,67,0,0,0,0]
[68,0,0,0,0,68,0,0,0,0,68,0,0,0,0]
[69,0,0,0,0,69,0,0,0,0,69,0,0,0,0]
[70,0,0,0,0,70,0,0,0,0,70,0,0,0,0]
[71,0,0,0,0,71,0,0,0,0,71,0,0,0,0]
[72,0,0,0,0,72,0,0,0,0,72,0,0,0,0]
[73,0,0,0,0,73,0,0,0,0,73,0,0,0,0]
[74,0,0,0,0,74,0,0,0,0,74,0,0,0,0]
[75,0,0,0,0,75,0,0,0,0,75,0,0,0,0]
[76,0,0,0,0,76,0,0,0,0,76,0,0,0,0]
[77,0,0,0,0,77,0,0,0,0,77,0,0,0,0]
[78,0,0,0,0,78,0,0,0,0,78,0,0,0,0]
[79,0,0,0,0,79,0,0,0,0,79,0,0,0,0]
[80,0,0,0,0,80,0,0,0,0,80,0,0,0,0]
[81,0,0,0,0,81,0,0,0,0,81,0,0,0,0]
[82,0,0,0,0,82,0,0,0,0,82,0,0,0,0]
[83,0,0,0,0,83,0,0,0,0,83,0,0,0,0]
[84,0,0,0,0,84,0,0,0,0,84,0,0,0,0]
[85,0,0,0,0,85,0,0,0,0,85,0,0,0,0]
[86,0,0,0,0,86,0,0,0,0,86,0,0,0,0]
[87,0,0,0,0,87,0,0,0,0,87,0,0,0,0]
[88,0,0,0,0,88,0,0,0,0,88,0,0,0,0]
[89,0,0,0,0,89,0,0,0,0,89,0,0,0,0]
[90,0,0,0,0,90,0,0,0,0,90,0,0,0,0]
[91,0,0,0,0,91,0,0,0,0,91,0,0,0,0]
[92,0,0,0,0,92,0,0,0,0,92,0,0,0,0]
[93,0,0,0,0,93,0,0,0,0,93,0,0,0,0]
[94,0,0,0,0,94,0,0,0,0,94,0,0,0,0]
[95,0,0,0,0,95,0,0,0,0,95,0,0,0,0]
[96,0,0,0,0,96,0,0,0,0,96,0,0,0,0]
[97,0,0,0,0,97,0,0,0,0,97,0,0,0,0]
[98,0,0,0,0,98,0,0,0,0,98,0,0,0,0]
[99,0,0,0,0,99,0,0,0,0,99,0,0,0,0]
[100,0,0,0,0,100,0,0,0,0,100,0,0,0,0]
[101,0,0,0,0,101,0,0,0,0,101,0,0,0,0]
[102,0,0,0,0,102,0,0,0,0,102,0,0,0,0]
[103,0,0,0,0,103,0,0,0,0,103,0,0,0,0]
[104,0,0,0,0,104,0,0,0,0,104,0,0,0,0]
[105,0,0,0,0,105,0,0,0,0,105,0,0,0,0]
[106,0,0,0,0,106,0,0,0,0,106,0,0,0,0]
[107,0,0,0,0,107,0,0,0,0,107,0,0,0,0]
[108,0,0,0,0,108,0,0,0,0,108,0,0,0,0]
[109,0,0,0,0,109,0,0,0,0,109,0,0,0,0]
[110,0,0,0,0,110,0,0,0,0,110,0,0,0,0]
[111,0,0,0,0,111,0,0,0,0,111,0,0,0,0]
[112,0,0,0,0,112,0,0,0,0,112,0,0,0,0]
[113,0,0,0,0,113,0,0,0,0,113,0,0,0,0]
[114,0,0,0,0,114,0,0,0,0,114,0,0,0,0]
[115,0,0,0,0,115,0,0,0,0,115,0,0,0,0]
[116,0,0,0,0,116,0,0,0,0,116,0,0,0,0]
[117,0,0,0,0,117,0,0,0,0,117,0,0,0,0]
[118,0,0,0,0,118,0,0,0,0,118,0,0,0,0]
[119,0,0,0,0,119,0,0,0,0,119,0,0,0,0]
[120,0,0,0,0,120,0,0,0,0,120,0,0,0,0]
[121,0,0,0,0,121,0,0,0,0,121,0,0,0,0]
[122,0,0,0,0,122,0,0,0,0,122,0,0,0,0]
[123,0,0,0,0,123,0,0,0,0,123,0,0,0,0]
[124,0,0,0,0,124,0,0,0,0,124,0,0,0,0]
[125,0,0,0,0,125,0,0,0,0,125,0,0,0,0]
[126,0,0,0,0,126,0,0,0,0,126,0,0,0,0]
[127,0,0,0,0,127,0,0,0,0,127,0,0,0,0]
[128,0,0,0,0,128,0,0,0,0,128,0,0,0,0]
[129,{"$f":"B301-E302","v":0},{"$f":"-$E$88/12","v":0},0,{"$f":"C302-D302","v":0},129,{"$f":"G301-J302","v":0},{"$f":"-$E$94/12","v":0},{"$f":"G301*$E$92/12","v":0},{"$f":"H302-I302","v":0},129,{"$f":"G302+B302","v":0},0,0,0]
[{"$f":"A302+1","v":130},0,0,{"$f":"B302*$E$86/12","v":0},0,{"$f":"F302+1","v":130},0,0,0,0,{"$f":"K302+1","v":130},0,0,0,0]
[131,0,0,0,0,131,0,0,0,0,131,0,0,0,0]
[132,0,0,0,0,132,0,0,0,0,132,0,0,0,0]
[133,0,0,0,0,133,0,0,0,0,133,0,0,0,0]
[134,0,0,0,0,134,0,0,0,0,134,0,0,0,0]
[135,0,0,0,0,135,0,0,0,0,135,0,0,0,0]
[136,0,0,0,0,136,0,0,0,0,136,0,0,0,0]
[137,0,0,0,0,137,0,0,0,0,137,0,0,0,0]
[138,0,0,0,0,138,0,0,0,0,138,0,0,0,0]
[139,0,0,0,0,139,0,0,0,0,139,0,0,0,0]
[140,0,0,0,0,140,0,0,0,0,140,0,0,0,0]
[141,0,0,0,0,141,0,0,0,0,141,0,0,0,0]
[142,0,0,0,0,142,0,0,0,0,142,0,0,0,0]
[143,0,0,0,0,143,0,0,0,0,143,0,0,0,0]
[144,0,0,0,0,144,0,0,0,0,144,0,0,0,0]
[145,0,0,0,0,145,0,0,0,0,145,0,0,0,0]
[146,0,0,0,0,146,0,0,0,0,146,0,0,0,0]
[147,0,0,0,0,147,0,0,0,0,147,0,0,0,0]
[148,0,0,0,0,148,0,0,0,0,148,0,0,0,0]
[149,0,0,0,0,149,0,0,0,0,149,0,0,0,0]
[150,0,0,0,0,150,0,0,0,0,150,0,0,0,0]
[151,0,0,0,0,151,0,0,0,0,151,0,0,0,0]
[152,0,0,0,0,152,0,0,0,0,152,0,0,0,0]
[153,0,0,0,0,153,0,0,0,0,153,0,0,0,0]
[154,0,0,0,0,154,0,0,0,0,154,0,0,0,0]
[155,0,0,0,0,155,0,0,0,0,155,0,0,0,0]
[156,0,0,0,0,156,0,0,0,0,156,0,0,0,0]
[157,0,0,0,0,157,0,0,0,0,157,0,0,0,0]
[158,0,0,0,0,158,0,0,0,0,158,0,0,0,0]
[159,0,0,0,0,159,0,0,0,0,159,0,0,0,0]
[160,0,0,0,0,160,0,0,0,0,160,0,0,0,0]
[161,0,0,0,0,161,0,0,0,0,161,0,0,0,0]
[162,0,0,0,0,162,0,0,0,0,162,0,0,0,0]
[163,0,0,0,0,163,0,0,0,0,163,0,0,0,0]
[164,0,0,0,0,164,0,0,0,0,164,0,0,0,0]
[165,0,0,0,0,165,0,0,0,0,165,0,0,0,0]
[166,0,0,0,0,166,0,0,0,0,166,0,0,0,0]
[167,0,0,0,0,167,0,0,0,0,167,0,0,0,0]
[168,0,0,0,0,168,0,0,0,0,168,0,0,0,0]
[169,0,0,0,0,169,0,0,0,0,169,0,0,0,0]
[170,0,0,0,0,170,0,0,0,0,170,0,0,0,0]
[171,0,0,0,0,171,0,0,0,0,171,0,0,0,0]
[172,0,0,0,0,172,0,0,0,0,172,0,0,0,0]
[173,0,0,0,0,173,0,0,0,0,173,0,0,0,0]
[174,0,0,0,0,174,0,0,0,0,174,0,0,0,0]
[175,0,0,0,0,175,0,0,0,0,175,0,0,0,0]
[176,0,0,0,0,176,0,0,0,0,176,0,0,0,0]
[177,0,0,0,0,177,0,0,0,0,177,0,0,0,0]
[178,0,0,0,0,178,0,0,0,0,178,0,0,0,0]
[179,0,0,0,0,179,0,0,0,0,179,0,0,0,0]
[180,0,0,0,0,180,0,0,0,0,180,0,0,0,0]
[181,0,0,0,0,181,0,0,0,0,181,0,0,0,0]
[182,0,0,0,0,182,0,0,0,0,182,0,0,0,0]
[183,0,0,0,0,183,0,0,0,0,183,0,0,0,0]
[184,0,0,0,0,184,0,0,0,0,184,0,0,0,0]
[185,0,0,0,0,185,0,0,0,0,185,0,0,0,0]
[186,0,0,0,0,186,0,0,0,0,186,0,0,0,0]
[187,0,0,0,0,187,0,0,0,0,187,0,0,0,0]
[188,0,0,0,0,188,0,0,0,0,188,0,0,0,0]
[189,0,0,0,0,189,0,0,0,0,189,0,0,0,0]
[190,0,0,0,0,190,0,0,0,0,190,0,0,0,0]
[191,0,0,0,0,191,0,0,0,0,191,0,0,0,0]
[192,0,0,0,0,192,0,0,0,0,192,0,0,0,{"$f":"J365+E365","v":0}]
[193,{"$f":"B365-E366","v":0},{"$f":"-$E$88/12","v":0},0,{"$f":"C366-D366","v":0},193,{"$f":"G365-J366","v":0},{"$f":"-$E$94/12","v":0},{"$f":"G365*$E$92/12","v":0},{"$f":"H366-I366","v":0},193,{"$f":"G366+B366","v":0},0,0,0]
[{"$f":"A366+1","v":194},0,0,{"$f":"B366*$E$86/12","v":0},0,{"$f":"F366+1","v":194},0,0,0,0,{"$f":"K366+1","v":194},0,0,0,0]
[195,0,0,0,0,195,0,0,0,0,195,0,0,0,0]
[196,0,0,0,0,196,0,0,0,0,196,0,0,0,0]
[197,0,0,0,0,197,0,0,0,0,197,0,0,0,0]
[198,0,0,0,0,198,0,0,0,0,198,0,0,0,0]
[199,0,0,0,0,199,0,0,0,0,199,0,0,0,0]
[200,0,0,0,0,200,0,0,0,0,200,0,0,0,0]
[201,0,0,0,0,201,0,0,0,0,201,0,0,0,0]
[202,0,0,0,0,202,0,0,0,0,202,0,0,0,0]
[203,0,0,0,0,203,0,0,0,0,203,0,0,0,0]
[204,0,0,0,0,204,0,0,0,0,204,0,0,0,0]
[205,0,0,0,0,205,0,0,0,0,205,0,0,0,0]
[206,0,0,0,0,206,0,0,0,0,206,0,0,0,0]
[207,0,0,0,0,207,0,0,0,0,207,0,0,0,0]
[208,0,0,0,0,208,0,0,0,0,208,0,0,0,0]
[209,0,0,0,0,209,0,0,0,0,209,0,0,0,0]
[210,0,0,0,0,210,0,0,0,0,210,0,0,0,0]
[211,0,0,0,0,211,0,0,0,0,211,0,0,0,0]
[212,0,0,0,0,212,0,0,0,0,212,0,0,0,0]
[213,0,0,0,0,213,0,0,0,0,213,0,0,0,0]
[214,0,0,0,0,214,0,0,0,0,214,0,0,0,0]
[215,0,0,0,0,215,0,0,0,0,215,0,0,0,0]
[216,0,0,0,0,216,0,0,0,0,216,0,0,0,0]
[217,0,0,0,0,217,0,0,0,0,217,0,0,0,0]
[218,0,0,0,0,218,0,0,0,0,218,0,0,0,0]
[219,0,0,0,0,219,0,0,0,0,219,0,0,0,0]
[220,0,0,0,0,220,0,0,0,0,220,0,0,0,0]
[221,0,0,0,0,221,0,0,0,0,221,0,0,0,0]
[222,0,0,0,0,222,0,0,0,0,222,0,0,0,0]
[223,0,0,0,0,223,0,0,0,0,223,0,0,0,0]
[224,0,0,0,0,224,0,0,0,0,224,0,0,0,0]
[225,0,0,0,0,225,0,0,0,0,225,0,0,0,0]
[226,0,0,0,0,226,0,0,0,0,226,0,0,0,0]
[227,0,0,0,0,227,0,0,0,0,227,0,0,0,0]
[228,0,0,0,0,228,0,0,0,0,228,0,0,0,0]
[229,0,0,0,0,229,0,0,0,0,229,0,0,0,0]
[230,0,0,0,0,230,0,0,0,0,230,0,0,0,0]
[231,0,0,0,0,231,0,0,0,0,231,0,0,0,0]
[232,0,0,0,0,232,0,0,0,0,232,0,0,0,0]
[233,0,0,0,0,233,0,0,0,0,233,0,0,0,0]
[234,0,0,0,0,234,0,0,0,0,234,0,0,0,0]
[235,0,0,0,0,235,0,0,0,0,235,0,0,0,0]
[236,0,0,0,0,236,0,0,0,0,236,0,0,0,0]
[237,0,0,0,0,237,0,0,0,0,237,0,0,0,0]
[238,0,0,0,0,238,0,0,0,0,238,0,0,0,0]
[239,0,0,0,0,239,0,0,0,0,239,0,0,0,0]
[240,0,0,0,0,240,0,0,0,0,240,0,0,0,0]
[241,0,0,0,0,241,0,0,0,0,241,0,0,0,0]
[242,0,0,0,0,242,0,0,0,0,242,0,0,0,0]
[243,0,0,0,0,243,0,0,0,0,243,0,0,0,0]
[244,0,0,0,0,244,0,0,0,0,244,0,0,0,0]
[245,0,0,0,0,245,0,0,0,0,245,0,0,0,0]
[246,0,0,0,0,246,0,0,0,0,246,0,0,0,0]
[247,0,0,0,0,247,0,0,0,0,247,0,0,0,0]
[248,0,0,0,0,248,0,0,0,0,248,0,0,0,0]
[249,0,0,0,0,249,0,0,0,0,249,0,0,0,0]
[250,0,0,0,0,250,0,0,0,0,250,0,0,0,0]
[251,0,0,0,0,251,0,0,0,0,251,0,0,0,0]
[252,0,0,0,0,252,0,0,0,0,252,0,0,0,0]
[253,0,0,0,0,253,0,0,0,0,253,0,0,0,0]
[254,0,0,0,0,254,0,0,0,0,254,0,0,0,0]
[255,0,0,0,0,255,0,0,0,0,255,0,0,0,0]
[256,0,0,0,0,256,0,0,0,0,256,0,0,0,0]
[257,{"$f":"B429-E430","v":0},{"$f":"-$E$88/12","v":0},0,{"$f":"C430-D430","v":0},257,{"$f":"G429-J430","v":0},{"$f":"-$E$94/12","v":0},{"$f":"G429*$E$92/12","v":0},{"$f":"H430-I430","v":0},257,{"$f":"G430+B430","v":0},0,0,0]
[{"$f":"A430+1","v":258},0,0,{"$f":"B430*$E$86/12","v":0},0,{"$f":"F430+1","v":258},0,0,0,0,{"$f":"K430+1","v":258},0,0,0,0]
[259,0,0,0,0,259,0,0,0,0,259,0,0,0,0]
[260,0,0,0,0,260,0,0,0,0,260,0,0,0,0]
[261,0,0,0,0,261,0,0,0,0,261,0,0,0,0]
[262,0,0,0,0,262,0,0,0,0,262,0,0,0,0]
[263,0,0,0,0,263,0,0,0,0,263,0,0,0,0]
[264,0,0,0,0,264,0,0,0,0,264,0,0,0,0]
[265,0,0,0,0,265,0,0,0,0,265,0,0,0,0]
[266,0,0,0,0,266,0,0,0,0,266,0,0,0,0]
[267,0,0,0,0,267,0,0,0,0,267,0,0,0,0]
[268,0,0,0,0,268,0,0,0,0,268,0,0,0,0]
[269,0,0,0,0,269,0,0,0,0,269,0,0,0,0]
[270,0,0,0,0,270,0,0,0,0,270,0,0,0,0]
[271,0,0,0,0,271,0,0,0,0,271,0,0,0,0]
[272,0,0,0,0,272,0,0,0,0,272,0,0,0,0]
[273,0,0,0,0,273,0,0,0,0,273,0,0,0,0]
[274,0,0,0,0,274,0,0,0,0,274,0,0,0,0]
[275,0,0,0,0,275,0,0,0,0,275,0,0,0,0]
[276,0,0,0,0,276,0,0,0,0,276,0,0,0,0]
[277,0,0,0,0,277,0,0,0,0,277,0,0,0,0]
[278,0,0,0,0,278,0,0,0,0,278,0,0,0,0]
[279,0,0,0,0,279,0,0,0,0,279,0,0,0,0]
[280,0,0,0,0,280,0,0,0,0,280,0,0,0,0]
[281,0,0,0,0,281,0,0,0,0,281,0,0,0,0]
[282,0,0,0,0,282,0,0,0,0,282,0,0,0,0]
[283,0,0,0,0,283,0,0,0,0,283,0,0,0,0]
[284,0,0,0,0,284,0,0,0,0,284,0,0,0,0]
[285,0,0,0,0,285,0,0,0,0,285,0,0,0,0]
[286,0,0,0,0,286,0,0,0,0,286,0,0,0,0]
[287,0,0,0,0,287,0,0,0,0,287,0,0,0,0]
[288,0,0,0,0,288,0,0,0,0,288,0,0,0,0]
[289,0,0,0,0,289,0,0,0,0,289,0,0,0,0]
[290,0,0,0,0,290,0,0,0,0,290,0,0,0,0]
[291,0,0,0,0,291,0,0,0,0,291,0,0,0,0]
[292,0,0,0,0,292,0,0,0,0,292,0,0,0,0]
[293,0,0,0,0,293,0,0,0,0,293,0,0,0,0]
[294,0,0,0,0,294,0,0,0,0,294,0,0,0,0]
[295,0,0,0,0,295,0,0,0,0,295,0,0,0,0]
[296,0,0,0,0,296,0,0,0,0,296,0,0,0,0]
[297,0,0,0,0,297,0,0,0,0,297,0,0,0,0]
[298,0,0,0,0,298,0,0,0,0,298,0,0,0,0]
[299,0,0,0,0,299,0,0,0,0,299,0,0,0,0]
[300,0,0,0,0,300,0,0,0,0,300,0,0,0,0]
[301,0,0,0,0,301,0,0,0,0,301,0,0,0,0]
[302,0,0,0,0,302,0,0,0,0,302,0,0,0,0]
[303,0,0,0,0,303,0,0,0,0,303,0,0,0,0]
[304,0,0,0,0,304,0,0,0,0,304,0,0,0,0]
[305,0,0,0,0,305,0,0,0,0,305,0,0,0,0]
[306,0,0,0,0,306,0,0,0,0,306,0,0,0,0]
[307,0,0,0,0,307,0,0,0,0,307,0,0,0,0]
[308,0,0,0,0,308,0,0,0,0,308,0,0,0,0]
[309,0,0,0,0,309,0,0,0,0,309,0,0,0,0]
[310,0,0,0,0,310,0,0,0,0,310,0,0,0,0]
[311,0,0,0,0,311,0,0,0,0,311,0,0,0,0]
[312,0,0,0,0,312,0,0,0,0,312,0,0,0,0]
[313,0,0,0,0,313,0,0,0,0,313,0,0,0,0]
[314,0,0,0,0,314,0,0,0,0,314,0,0,0,0]
[315,0,0,0,0,315,0,0,0,0,315,0,0,0,0]
[316,0,0,0,0,316,0,0,0,0,316,0,0,0,0]
[317,0,0,0,0,317,0,0,0,0,317,0,0,0,0]
[318,0,0,0,0,318,0,0,0,0,318,0,0,0,0]
[319,0,0,0,0,319,0,0,0,0,319,0,0,0,0]
[320,0,0,0,0,320,0,0,0,0,320,0,0,0,{"$f":"J493+E493","v":0}]
[321,{"$f":"B493-E494","v":0},{"$f":"-$E$88/12","v":0},0,{"$f":"C494-D494","v":0},321,{"$f":"G493-J494","v":0},{"$f":"-$E$94/12","v":0},{"$f":"G493*$E$92/12","v":0},{"$f":"H494-I494","v":0},321,{"$f":"G494+B494","v":0},0,0,0]
[{"$f":"A494+1","v":322},0,0,{"$f":"B494*$E$86/12","v":0},0,{"$f":"F494+1","v":322},0,0,0,0,{"$f":"K494+1","v":322},0,0,0,0]
[323,0,0,0,0,323,0,0,0,0,323,0,0,0,0]
[324,0,0,0,0,324,0,0,0,0,324,0,0,0,0]
[325,0,0,0,0,325,0,0,0,0,325,0,0,0,0]
[326,0,0,0,0,326,0,0,0,0,326,0,0,0,0]
[327,0,0,0,0,327,0,0,0,0,327,0,0,0,0]
[328,0,0,0,0,328,0,0,0,0,328,0,0,0,0]
[329,0,0,0,0,329,0,0,0,0,329,0,0,0,0]
[330,0,0,0,0,330,0,0,0,0,330,0,0,0,0]
[331,0,0,0,0,331,0,0,0,0,331,0,0,0,0]
[332,0,0,0,0,332,0,0,0,0,332,0,0,0,0]
[333,0,0,0,0,333,0,0,0,0,333,0,0,0,0]
[334,0,0,0,0,334,0,0,0,0,334,0,0,0,0]
[335,0,0,0,0,335,0,0,0,0,335,0,0,0,0]
[336,0,0,0,0,336,0,0,0,0,336,0,0,0,0]
[337,0,0,0,0,337,0,0,0,0,337,0,0,0,0]
[338,0,0,0,0,338,0,0,0,0,338,0,0,0,0]
[339,0,0,0,0,339,0,0,0,0,339,0,0,0,0]
[340,0,0,0,0,340,0,0,0,0,340,0,0,0,0]
[341,0,0,0,0,341,0,0,0,0,341,0,0,0,0]
[342,0,0,0,0,342,0,0,0,0,342,0,0,0,0]
[343,0,0,0,0,343,0,0,0,0,343,0,0,0,0]
[344,0,0,0,0,344,0,0,0,0,344,0,0,0,0]
[345,0,0,0,0,345,0,0,0,0,345,0,0,0,0]
[346,0,0,0,0,346,0,0,0,0,346,0,0,0,0]
[347,0,0,0,0,347,0,0,0,0,347,0,0,0,0]
[348,0,0,0,0,348,0,0,0,0,348,0,0,0,0]
[349,0,0,0,0,349,0,0,0,0,349,0,0,0,0]
[350,0,0,0,0,350,0,0,0,0,350,0,0,0,0]
[351,0,0,0,0,351,0,0,0,0,351,0,0,0,0]
[352,0,0,0,0,352,0,0,0,0,352,0,0,0,0]
[353,0,0,0,0,353,0,0,0,0,353,0,0,0,0]
[354,0,0,0,0,354,0,0,0,0,354,0,0,0,0]
[355,0,0,0,0,355,0,0,0,0,355,0,0,0,0]
[356,0,0,0,0,356,0,0,0,0,356,0,0,0,0]
[357,0,0,0,0,357,0,0,0,0,357,0,0,0,0]
[358,0,0,0,0,358,0,0,0,0,358,0,0,0,0]
[359,0,0,0,0,359,0,0,0,0,359,0,0,0,0]
[360,0,0,0,0,360,0,0,0,0,360,0,0,0,0]

{"sheet":"Industrial","index":23,"n_rows":532,"n_cols":30,"rows_kept":532,"cut":false,"hidden":true,"merged":[]}
["ROI Template - Industrial"]
[]
["Leveraging Tools",null,null,"Summary","User override ",null,null,"Investment Targets and Performance"]
["Tax Credits net to project",null,null,{"$f":"'Gap Financing Options'!G122","v":0},0,{"$f":"IF('Basic Financial'!$B$34=0,D4,0)","v":0},null,"Performance Indicator",null,null,null,"Target","Actual","NPV"]
["Fee Reductions",null,null,{"$f":"'Gap Financing Options'!G88","v":0},0,{"$f":"IF('Basic Financial'!$B$34=0,D5,0)","v":0},null,"Cash-on-Cash After Year 3",null,null,null,{"$f":"'Advanced Financial'!G67","v":0.1},{"$f":"G132","v":0}]
["Grants",null,null,{"$f":"'Gap Financing Options'!G98","v":0},0,{"$f":"IF('Basic Financial'!$B$34=0,D6,('Basic Financial'!$B$34*'Development Costs'!F44))","v":0},null,"IRR on Project Cost (Unleveraged Return)",null,null,null,{"$f":"'Advanced Financial'!G68","v":0.1},{"$f":"N146","v":0},{"$f":"N147","v":0}]
["Total Development Offsets (Contributions to Equity)",null,null,null,null,{"$f":"SUM(F4:F6)","v":0},null,"IRR on Investor Equity (Leveraged Return Before Tax)",null,null,null,{"$f":"'Advanced Financial'!G69","v":0.25},{"$f":"N154","v":0},{"$f":"N155","v":0}]
["Net Development Costs",null,null,null,null,{"$f":"(C56-F7)","v":0},null,"Debt Service Coverage Ratio (Year 3)",null,null,null,{"$f":"'Advanced Financial'!G70","v":1.25},{"$f":"IFERROR(G126/G128,0)","v":0}]
[null,null,null,null,null,null,null,"IRR on Public Participation",null,null,null,{"$f":"E109","v":0.05},{"$f":"N164","v":0},{"$f":"N165","v":0}]
[]
[]
[]
["Local Property Tax Rate Available for abatement",null,null,{"$f":"'Gap Financing Options'!G15","v":0}]
["Local Sales Tax Rate Available for abatement",null,null,{"$f":"'Gap Financing Options'!G37","v":0}]
[]
["Net Operating Income Analysis"]
["Total Development Costs",null,{"$f":"-'Development Costs'!E44","v":0}]
["Project Feature",null,"Project","Rent"]
["Total project size, square feet",null,{"$f":"'Physical Outputs'!C32","v":0},{"$f":"'Basic Financial'!B60","v":12},"per square foot/year"]
["Other Income (vending, fines)",null,{"$f":"'Advanced Financial'!G80","v":0}]
["Less: Vacancy",null,{"$f":"1-'Advanced Financial'!C35","v":5.0000000000000044E-2}]
["Less: Concessions, Bad Debt",null,{"$f":"'Advanced Financial'!G81","v":0}]
["Less: Operating Costs/sq.ft.",null,{"$f":"IFERROR((('Advanced Financial'!G82*D60)/'Physical Outputs'!C32),0)","v":0}]
[]
["Initial Project Value Analysis"]
["Property Value (Year 1)"]
["Going in Cap Rate",null,{"$f":"'Advanced Financial'!G83","v":0}]
[]
["Debt Financing"]
["Primary Debt"]
["Maximum LTV",null,null,{"$f":"'Advanced Financial'!G91","v":0.7}]
["Rate",null,null,{"$f":"'Advanced Financial'!G92","v":0.06}]
["Amortization Period, Years",null,null,{"$f":"'Advanced Financial'!G93","v":25}]
["Public Leveraging Loan"]
["Maximum LTV",null,null,{"$f":"IF(D42=1,'Gap Financing Options'!G69,0)","v":0}]
["Rate",null,null,{"$f":"IF(D42=1,'Gap Financing Options'!G70,0)","v":0}]
["Amortization Period, Years",null,null,{"$f":"IF(D42=1,'Gap Financing Options'!G71,0)","v":0}]
["Public Participation"]
["Capital Investment",null,null,{"$f":"IF(D42=1,'Gap Financing Options'!G75,0)","v":0}]
["Annual Cash Throw Off",null,null,{"$f":"IF(D42=1,'Gap Financing Options'!G76,0)","v":0}]
["Share of Net Sales Price",null,null,{"$f":"IF(D42=1,'Gap Financing Options'!G77,0)","v":0}]
["Public Leveraging Loan Included in Analysis?(1=Yes; 0=No) ",null,null,{"$f":"'Gap Financing Options'!G68","v":0}]
["Target IRR",null,null,{"$f":"'Advanced Financial'!G71","v":0.05}]
[]
["Operating Statement"]
["GPI",null,"Escalation",{"$f":"'Advanced Financial'!G84","v":0}]
["EGI"]
["Less: Operating Costs",null,"Escalation",{"$f":"'Advanced Financial'!G85","v":0}]
[]
["Project Value",null,null,"Year 1"]
["Terminal Cap Rate, Gross Sales Price",null,null,{"$f":"'Advanced Financial'!G87","v":0}]
["Net Sales = Price Less Sales Cost",null,null,{"$f":"'Advanced Financial'!G88","v":0}]
[]
[]
["Net Operating Income Analysis"]
["Total Development Costs",null,{"$f":"C17","v":0}]
["Development Costs Per Sq Ft",null,{"$f":"IFERROR(C56/C59,0)","v":0}]
["Project Feature",null,"Project","Rent"]
["Total project size, square feet",null,{"$f":"C19","v":0},{"$f":"D19","v":12},"per square foot/year"]
["Gross Potential Rent  (GPI)",null,null,{"$f":"C59*D59","v":0}]
["Other Income (vending, fines)",null,{"$f":"C20","v":0},{"$f":"C61*D60","v":0}]
["Total Income",null,null,{"$f":"D60+D61","v":0}]
["Less: Vacancy",null,{"$f":"C21","v":5.0000000000000044E-2},{"$f":"D62*C63","v":0}]
["Less: Concessions, Bad Debt",null,{"$f":"C22","v":0},{"$f":"D62*C64","v":0}]
["Effective Gross Income  (EGI)",null,null,{"$f":"D62-D63-D64","v":0}]
["Less: Operating Costs/sq.ft.",null,{"$f":"C23","v":0},{"$f":"C66*C59","v":0}]
["Net Operating Income",null,null,{"$f":"D65-D66","v":0}]
[]
["Initial Project Value Analysis"]
["CAP RATE (Yield to Costs)",null,{"$f":"IFERROR(D67/F8,0)","v":0}]
["Debt Service",null,{"$f":"IFERROR(-E96,0)","v":0}]
["Cash Flow",null,{"$f":"D67-C71","v":0}]
["Return on Equity (Year 1)",null,{"$f":"IFERROR(C72/E101,0)","v":0}]
["Property Value (Year 1)"]
["NOI",null,{"$f":"D67","v":0}]
["Going in Cap Rate",null,{"$f":"C27","v":0}]
["Project Market Value",null,{"$f":"IFERROR(C75/C76,0)","v":0}]
["Net Project Value",null,{"$f":"C77-C56","v":0}]
[]
["Debt Financing"]
["Primary Debt"]
["Total Value",null,null,null,{"$f":"C56","v":0}]
["Maximum LTV",null,null,{"$f":"D31","v":0.7},{"$f":"E82*D83","v":0}]
["Imputed Loan Amount",null,null,null,{"$f":"E83","v":0}]
["Rate",null,null,null,{"$f":"D32","v":0.06}]
["Amortization Period, Years",null,null,null,{"$f":"D33","v":25}]
["Annual Debt Service (Amortized)",null,null,null,{"$f":"IFERROR(PMT(E85/12,E86*12,E84)*12,0)","v":0}]
["Public Leveraging Loan"]
["Maximum LTV",null,null,{"$f":"IF(D42=1,D35,0)","v":0},{"$f":"IF(E82*D89>'Development Costs'!F44*'Gap Financing Options'!B79,'Development Costs'!F44*'Gap Financing Options'!B79,E82*D89)","v":0}]
["Imputed Loan Amount",null,null,null,{"$f":"IF(AND(D42=1,'Basic Financial'!B34=0),E89+'Gap Financing Options'!G74,0)","v":0}]
["Rate",null,null,null,{"$f":"D36","v":0}]
["Amortization Period, Years",null,null,null,{"$f":"D37","v":0}]
["Annual Debt Service (Amortized)",null,null,null,{"$f":"IFERROR(PMT(E91/12,E92*12,E90)*12,0)","v":0}]
[]
["Total Debt",null,null,null,{"$f":"E84+E90","v":0}]
["Total Debt Service",null,null,null,{"$f":"E87+E93","v":0}]
["Summary"]
["Total Development Costs",null,null,null,{"$f":"C56","v":0}]
["Equity Required",null,null,null,{"$f":"IF(E98-E95<0,1,E98-E95)","v":0}]
["Total Development Offsets (Contributions to Equity)",null,null,null,{"$f":"F7","v":0}]
["Net Equity Required",null,null,null,{"$f":"E99-E100","v":0}]
["Total Project Cost",null,null,null,{"$f":"E98","v":0}]
["Total Project Cost After Development Offsets",null,null,null,{"$f":"E102-E100","v":0}]
["Public Participation"]
["Capital Investment",null,null,null,{"$f":"D39","v":0}]
["Annual Cash Throw Off",null,null,null,{"$f":"D40","v":0}]
["Share of Net Sales Price",null,null,null,{"$f":"D41","v":0}]
["Public Leveraging Loan Included in Analysis? ",null,null,"(1=Yes; 0=No)",{"$f":"D42","v":0}]
["Target IRR",null,null,null,{"$f":"D43","v":0.05}]
[]
[]
[]
["Operating Statement",null,null,null,"Year 1","Year 2","Year 3","Year 4","Year 5","Year 6","Year 7","Year 8","Year 9","Year 10"]
["GPI",null,"Escalation",{"$f":"D46","v":0},{"$f":"D60","v":0},{"$f":"E114*(1+$D$114)","v":0},0,0,0,0,0,0,0,0]
["Other Income",null,null,null,{"$f":"D61","v":0},0,0,0,0,0,0,0,0,0]
["Total Income",null,null,null,{"$f":"E114+E115","v":0},0,0,0,0,0,0,0,0,0]
["Less: Vacancy",null,null,{"$f":"C63","v":5.0000000000000044E-2},{"$f":"IF('Advanced Financial'!B35>0,(1-'Advanced Financial'!B35)*E116,$D$117*E116)","v":0},{"$f":"$D$117*F116","v":0},0,0,0,0,0,0,0,0]
["Less: Concessions, Market Loss",null,null,{"$f":"C64","v":0},{"$f":"$D$118*E116","v":0},0,0,0,0,0,0,0,0,0]
["EGI",null,null,null,{"$f":"E116-E117-E118","v":0},0,0,0,0,0,0,0,0,0]
["Less: Operating Costs",null,"Escalation",{"$f":"D48","v":0},{"$f":"D66","v":0},{"$f":"E120*(1+$D$120)","v":0},0,0,0,0,0,0,0,0]
["Less: Property Taxes",null,"Millage Rate",{"$f":"'Advanced Financial'!G63","v":0},{"$f":"$C17*$D121*'Advanced Financial'!$G64","v":0},{"$f":"$C17*$D121*'Advanced Financial'!$G64*(1+'Advanced Financial'!G86)","v":0},{"$f":"$C17*$D121*'Advanced Financial'!$G64*(1+'Advanced Financial'!G86)^2","v":0},{"$f":"$C17*$D121*'Advanced Financial'!$G64*(1+'Advanced Financial'!G86)^3","v":0},{"$f":"$C17*$D121*'Advanced Financial'!$G64*(1+'Advanced Financial'!G86)^4","v":0},{"$f":"$C17*$D121*'Advanced Financial'!$G64*(1+'Advanced Financial'!G86)^5","v":0},{"$f":"$C17*$D121*'Advanced Financial'!$G64*(1+'Advanced Financial'!G86)^6","v":0},{"$f":"$C17*$D121*'Advanced Financial'!$G64*(1+'Advanced Financial'!G86)^7","v":0},{"$f":"$C17*$D121*'Advanced Financial'!$G64*(1+'Advanced Financial'!G86)^8","v":0},{"$f":"$C17*$D121*'Advanced Financial'!$G64*(1+'Advanced Financial'!G86)^9","v":0}]
["Plus: Property Tax Abatement",null,null,null,{"$f":"IF(OR(BF_Subsidy=0,BF_Subsidy=\"\"),$D$13*'Advanced Financial'!$G64*$F8*'Gap Financing Options'!G17,0)","v":0},{"$f":"IF(OR(BF_Subsidy=0,BF_Subsidy=\"\"),$D$13*'Advanced Financial'!$G64*$F8*(1+$D$114)*'Gap Financing Options'!G18,0)","v":0},{"$f":"IF(OR(BF_Subsidy=0,BF_Subsidy=\"\"),$D$13*'Advanced Financial'!$G64*$F8*(1+$D$114)^2*'Gap Financing Options'!G19,0)","v":0},{"$f":"IF(OR(BF_Subsidy=0,BF_Subsidy=\"\"),$D$13*'Advanced Financial'!$G64*$F8*(1+$D$114)^3*'Gap Financing Options'!G20,0)","v":0},{"$f":"IF(OR(BF_Subsidy=0,BF_Subsidy=\"\"),$D$13*'Advanced Financial'!$G64*$F8*(1+$D$114)^4*'Gap Financing Options'!G21,0)","v":0},{"$f":"IF(OR(BF_Subsidy=0,BF_Subsidy=\"\"),$D$13*'Advanced Financial'!$G64*$F8*(1+$D$114)^5*'Gap Financing Options'!G22,0)","v":0},{"$f":"IF(OR(BF_Subsidy=0,BF_Subsidy=\"\"),$D$13*'Advanced Financial'!$G64*$F8*(1+$D$114)^6*'Gap Financing Options'!G23,0)","v":0},{"$f":"IF(OR(BF_Subsidy=0,BF_Subsidy=\"\"),$D$13*'Advanced Financial'!$G64*$F8*(1+$D$114)^7*'Gap Financing Options'!G24,0)","v":0},{"$f":"IF(OR(BF_Subsidy=0,BF_Subsidy=\"\"),$D$13*'Advanced Financial'!$G64*$F8*(1+$D$114)^8*'Gap Financing Options'!G25,0)","v":0},{"$f":"IF(OR(BF_Subsidy=0,BF_Subsidy=\"\"),$D$13*'Advanced Financial'!$G64*$F8*(1+$D$114)^9*'Gap Financing Options'!G26,0)","v":0}]
["Plus Sales Tax Abatement",null,null,null,{"$f":"IF(OR(BF_Subsidy=0,BF_Subsidy=\"\"),'Gap Financing Options'!G39*$D$14*E116,0)","v":0},{"$f":"IF(OR(BF_Subsidy=0,BF_Subsidy=\"\"),'Gap Financing Options'!G39*$D$14*F116,0)","v":0},{"$f":"IF(OR(BF_Subsidy=0,BF_Subsidy=\"\"),'Gap Financing Options'!G41*$D$14*G116,0)","v":0},{"$f":"IF(OR(BF_Subsidy=0,BF_Subsidy=\"\"),'Gap Financing Options'!G42*$D$14*H116,0)","v":0},{"$f":"IF(OR(BF_Subsidy=0,BF_Subsidy=\"\"),'Gap Financing Options'!G43*$D$14*I116,0)","v":0},{"$f":"IF(OR(BF_Subsidy=0,BF_Subsidy=\"\"),'Gap Financing Options'!G44*$D$14*J116,0)","v":0},{"$f":"IF(OR(BF_Subsidy=0,BF_Subsidy=\"\"),'Gap Financing Options'!G45*$D$14*K116,0)","v":0},{"$f":"IF(OR(BF_Subsidy=0,BF_Subsidy=\"\"),'Gap Financing Options'!G46*$D$14*L116,0)","v":0},{"$f":"IF(OR(BF_Subsidy=0,BF_Subsidy=\"\"),'Gap Financing Options'!G47*$D$14*M116,0)","v":0},{"$f":"IF(OR(BF_Subsidy=0,BF_Subsidy=\"\"),'Gap Financing Options'!G48*$D$14*N116,0)","v":0}]
["Plus TIF + IRA Retainage of Taxes",null,null,null,{"$f":"IF(OR(BF_Subsidy=0,BF_Subsidy=\"\"),'Gap Financing Options'!G54,0)","v":0},{"$f":"IF(OR(BF_Subsidy=0,BF_Subsidy=\"\"),'Gap Financing Options'!G55,0)","v":0},{"$f":"IF(OR(BF_Subsidy=0,BF_Subsidy=\"\"),'Gap Financing Options'!G56,0)","v":0},{"$f":"IF(OR(BF_Subsidy=0,BF_Subsidy=\"\"),'Gap Financing Options'!G57,0)","v":0},{"$f":"IF(OR(BF_Subsidy=0,BF_Subsidy=\"\"),'Gap Financing Options'!G58,0)","v":0},{"$f":"IF(OR(BF_Subsidy=0,BF_Subsidy=\"\"),'Gap Financing Options'!G59,0)","v":0},{"$f":"IF(OR(BF_Subsidy=0,BF_Subsidy=\"\"),'Gap Financing Options'!G60,0)","v":0},{"$f":"IF(OR(BF_Subsidy=0,BF_Subsidy=\"\"),'Gap Financing Options'!G61,0)","v":0},{"$f":"IF(OR(BF_Subsidy=0,BF_Subsidy=\"\"),'Gap Financing Options'!G62,0)","v":0},{"$f":"IF(OR(BF_Subsidy=0,BF_Subsidy=\"\"),'Gap Financing Options'!G63,0)","v":0}]
["Cash Throw Off to Public Partner",null,null,null,{"$f":"IF(OR(BF_Subsidy=0,BF_Subsidy=\"\"),-$E$106,0)","v":0},0,0,0,0,0,0,0,0,0]
["NOI",null,null,null,{"$f":"E119-E121-E120+E122+E123+E124+E125","v":0},{"$f":"F119-F121-F120+F122+F123+F124+F125","v":0},0,0,0,0,0,0,0,0]
[]
["Less: Debt Service",null,null,null,{"$f":"-$E$96","v":0},0,0,0,0,0,0,0,0,0]
["Net Cash Flow",null,null,null,{"$f":"E126-E128","v":0},0,0,0,0,0,0,0,0,0]
[]
["Cap Rate",null,null,null,{"$f":"IFERROR(E126/$E$98,0)","v":0},0,0,0,0,0,0,0,0,0]
["Cash on Cash Return (Equity Dividend Rate)",null,null,null,{"$f":"IFERROR(E129/$E$101,0)","v":0},{"$f":"IFERROR(F129/$E$101,0)","v":0},0,0,0,0,0,0,0,0]
[]
["Project Value",null,null,"Year 0","Year 1","Year 2","Year 3","Year 4","Year 5","Year 6","Year 7","Year 8","Year 9","Year 10"]
["Terminal Cap Rate, Gross Sales Price",null,null,null,{"$f":"D51","v":0},null,null,null,null,null,null,null,null,{"$f":"IFERROR(N126/E135,0)","v":0}]
["Net Sales = Price Less Sales Cost",null,null,null,{"$f":"D52","v":0},null,null,null,null,null,null,null,null,{"$f":"N135*(1-E136)","v":0}]
["Less Mortgage Balance",null,null,null,null,null,null,null,null,null,null,null,null,{"$f":"AA181","v":0}]
["Net Sales Proceeds",null,null,null,null,null,null,null,null,null,null,null,null,{"$f":"N136-N137","v":0}]
[]
[]
["IRR - Unleveraged (Project Cost)",null,null,"Year 0","Year 1","Year 2","Year 3","Year 4","Year 5","Year 6","Year 7","Year 8","Year 9","Year 10"]
["Total Investment",null,null,{"$f":"-E103","v":0}]
["Project NOI",null,null,null,{"$f":"E126","v":0},{"$f":"F126","v":0},0,0,0,0,0,0,0,0]
["Net Sales Price",null,null,null,null,null,null,null,null,null,null,null,null,{"$f":"N136","v":0}]
["Total",null,null,{"$f":"SUM(D142:D144)","v":0},{"$f":"SUM(E142:E144)","v":0},{"$f":"SUM(F142:F144)","v":0},0,0,0,0,0,0,0,0]
["IRR - Project Cost",null,null,null,null,null,null,null,null,null,null,null,null,{"$f":"IFERROR(IRR(D145:N145),0)","v":0}]
["NPV - Project Cost",null,null,null,null,null,null,null,null,null,null,null,null,{"$f":"NPV(L6,D145:N145)","v":0}]
[]
["IRR - Leveraged (Before Tax)",null,null,"Year 0","Year 1","Year 2","Year 3","Year 4","Year 5","Year 6","Year 7","Year 8","Year 9","Year 10"]
["Original Investment (Equity)",null,null,{"$f":"-E101","v":0}]
["Project Cash Flow",null,null,null,{"$f":"E129","v":0},0,0,0,0,0,0,0,0,0]
["Net Sales Proceeds",null,null,null,null,null,null,null,null,null,null,null,null,{"$f":"N138","v":0}]
["Total",null,null,{"$f":"SUM(D150:D152)","v":0},0,0,0,0,0,0,0,0,0,0]
["IRR - Equity",null,null,null,null,null,null,null,null,null,null,null,null,{"$f":"IFERROR(IRR(D153:N153),0)","v":0}]
["NPV - Equity",null,null,null,null,null,null,null,null,null,null,null,null,{"$f":"NPV(L7,D153:N153)","v":0}]
[]
["IRR - Public Participation",null,null,"Year 0","Year 1","Year 2","Year 3","Year 4","Year 5","Year 6","Year 7","Year 8","Year 9","Year 10"]
["Original Investment (Equity)",null,null,{"$f":"-(E105+(E90*E108))","v":0}]
["Mezzanine Financing",null,null,null,{"$f":"-$E$93","v":0},0,0,0,0,0,0,0,0,0]
["Cash Throw Off",null,null,null,{"$f":"$E$106","v":0},0,0,0,0,0,0,0,0,0]
["Sale Proceeds",null,null,null,null,null,null,null,null,null,null,null,null,{"$f":"N152*E107","v":0}]
["Loan Balance",null,null,null,null,null,null,null,null,null,null,null,null,{"$f":"V181*E108","v":0}]
["Total",null,null,{"$f":"SUM(D158:D162)","v":0},{"$f":"SUM(E158:E162)","v":0},0,0,0,0,0,0,0,0,0]
["IRR - Equity",null,null,null,null,null,null,null,null,null,null,null,null,{"$f":"IFERROR(IRR(D163:N163),0)","v":0}]
["NPV - Equity",null,null,null,null,null,null,null,null,null,null,null,null,{"$f":"NPV(E109,D163:N163)","v":0}]
[]
[]
["DEBT SERVICE MORTIZATION TABLES"]
["Primary Debt Amortization",null,null,null,null,"Low Interest Loan",null,null,null,null,"Total Debt Amortization",null,null,null,null,"Annual Debt Service Summary - Primary Debt",null,null,null,null,"Annual Debt Service Summary - Secondary Debt",null,null,null,null,"Annual Debt Service Summary - Total Debt"]
[]
["Period","Balance","Payment","Interest","Principal","Period","Balance","Payment","Interest","Principal","Period","Balance","Payment","Interest","Principal","Year","Balance","Payment","Interest","Principal","Year","Balance","Payment","Interest","Principal","Year","Balance","Payment","Interest","Principal"]
[0,{"$f":"E84","v":0},null,null,null,0,{"$f":"E90","v":0},null,null,null,0,{"$f":"B172+G172","v":0},null,null,null,1,{"$f":"B184","v":0},{"$f":"SUM(C173:C184)","v":0},{"$f":"SUM(D173:D184)","v":0},{"$f":"SUM(E173:E184)","v":0},1,{"$f":"G184","v":0},{"$f":"SUM(H173:H184)","v":0},{"$f":"SUM(I173:I184)","v":0},{"$f":"SUM(J173:J184)","v":0},1,{"$f":"Q172+V172","v":0},{"$f":"R172+W172","v":0},{"$f":"S172+X172","v":0},{"$f":"T172+Y172","v":0}]
[1,{"$f":"B172-E173","v":0},{"$f":"-$E$87/12","v":0},{"$f":"B172*$E$85/12","v":0},{"$f":"C173-D173","v":0},1,{"$f":"G172-J173","v":0},{"$f":"-$E$93/12","v":0},{"$f":"G172*$E$91/12","v":0},{"$f":"H173-I173","v":0},1,{"$f":"G173+B173","v":0},0,0,0,2,{"$f":"B196","v":0},{"$f":"SUM(C185:C196)","v":0},{"$f":"SUM(D185:D196)","v":0},{"$f":"SUM(E185:E196)","v":0},2,{"$f":"G196","v":0},{"$f":"SUM(H185:H196)","v":0},{"$f":"SUM(I185:I196)","v":0},{"$f":"SUM(J185:J196)","v":0},2,{"$f":"Q173+V173","v":0},{"$f":"R173+W173","v":0},{"$f":"S173+X173","v":0},{"$f":"T173+Y173","v":0}]
[{"$f":"A173+1","v":2},0,0,{"$f":"B173*$E$85/12","v":0},0,{"$f":"F173+1","v":2},0,0,0,0,{"$f":"K173+1","v":2},0,0,0,0,3,{"$f":"B208","v":0},{"$f":"SUM(C197:C208)","v":0},{"$f":"SUM(D197:D208)","v":0},{"$f":"SUM(E197:E208)","v":0},3,{"$f":"G208","v":0},{"$f":"SUM(H197:H208)","v":0},{"$f":"SUM(I197:I208)","v":0},{"$f":"SUM(J197:J208)","v":0},3,0,0,0,0]
[3,0,0,0,0,3,0,0,0,0,3,0,0,0,0,4,{"$f":"B220","v":0},{"$f":"SUM(C209:C220)","v":0},{"$f":"SUM(D209:D220)","v":0},{"$f":"SUM(E209:E220)","v":0},4,{"$f":"G220","v":0},{"$f":"SUM(H209:H220)","v":0},{"$f":"SUM(I209:I220)","v":0},{"$f":"SUM(J209:J220)","v":0},4,0,0,0,0]
[4,0,0,0,0,4,0,0,0,0,4,0,0,0,0,5,{"$f":"B232","v":0},{"$f":"SUM(C221:C232)","v":0},{"$f":"SUM(D221:D232)","v":0},{"$f":"SUM(E221:E232)","v":0},5,{"$f":"G232","v":0},{"$f":"SUM(H221:H232)","v":0},{"$f":"SUM(I221:I232)","v":0},{"$f":"SUM(J221:J232)","v":0},5,0,0,0,0]
[5,0,0,0,0,5,0,0,0,0,5,0,0,0,0,6,{"$f":"B244","v":0},{"$f":"SUM(C233:C244)","v":0},{"$f":"SUM(D233:D244)","v":0},{"$f":"SUM(E233:E244)","v":0},6,{"$f":"G244","v":0},{"$f":"SUM(H233:H244)","v":0},{"$f":"SUM(I233:I244)","v":0},{"$f":"SUM(J233:J244)","v":0},6,0,0,0,0]
[6,0,0,0,0,6,0,0,0,0,6,0,0,0,0,7,{"$f":"B256","v":0},{"$f":"SUM(C245:C256)","v":0},{"$f":"SUM(D245:D256)","v":0},{"$f":"SUM(E245:E256)","v":0},7,{"$f":"G256","v":0},{"$f":"SUM(H245:H256)","v":0},{"$f":"SUM(I245:I256)","v":0},{"$f":"SUM(J245:J256)","v":0},7,0,0,0,0]
[7,0,0,0,0,7,0,0,0,0,7,0,0,0,0,8,{"$f":"B268","v":0},{"$f":"SUM(C257:C268)","v":0},{"$f":"SUM(D257:D268)","v":0},{"$f":"SUM(E257:E268)","v":0},8,{"$f":"G268","v":0},{"$f":"SUM(H257:H268)","v":0},{"$f":"SUM(I257:I268)","v":0},{"$f":"SUM(J257:J268)","v":0},8,0,0,0,0]
[8,0,0,0,0,8,0,0,0,0,8,0,0,0,0,9,{"$f":"B280","v":0},{"$f":"SUM(C269:C280)","v":0},{"$f":"SUM(D269:D280)","v":0},{"$f":"SUM(E269:E280)","v":0},9,{"$f":"G280","v":0},{"$f":"SUM(H269:H280)","v":0},{"$f":"SUM(I269:I280)","v":0},{"$f":"SUM(J269:J280)","v":0},9,0,0,0,0]
[9,0,0,0,0,9,0,0,0,0,9,0,0,0,0,10,{"$f":"B292","v":0},{"$f":"SUM(C281:C292)","v":0},{"$f":"SUM(D281:D292)","v":0},{"$f":"SUM(E281:E292)","v":0},10,{"$f":"G292","v":0},{"$f":"SUM(H281:H292)","v":0},{"$f":"SUM(I281:I292)","v":0},{"$f":"SUM(J281:J292)","v":0},10,{"$f":"Q181+V181","v":0},0,0,{"$f":"T181+Y181","v":0}]
[10,0,0,0,0,10,0,0,0,0,10,0,0,0,0]
[11,0,0,0,0,11,0,0,0,0,11,0,0,0,0]
[12,0,0,0,0,12,0,0,0,0,12,0,0,0,0]
[13,0,0,0,0,13,0,0,0,0,13,0,0,0,0]
[14,0,0,0,0,14,0,0,0,0,14,0,0,0,0]
[15,0,0,0,0,15,0,0,0,0,15,0,0,0,0]
[16,0,0,0,0,16,0,0,0,0,16,0,0,0,0]
[17,0,0,0,0,17,0,0,0,0,17,0,0,0,0]
[18,0,0,0,0,18,0,0,0,0,18,0,0,0,0]
[19,0,0,0,0,19,0,0,0,0,19,0,0,0,0]
[20,0,0,0,0,20,0,0,0,0,20,0,0,0,0]
[21,0,0,0,0,21,0,0,0,0,21,0,0,0,0]
[22,0,0,0,0,22,0,0,0,0,22,0,0,0,0]
[23,0,0,0,0,23,0,0,0,0,23,0,0,0,0]
[24,0,0,0,0,24,0,0,0,0,24,0,0,0,0]
[25,0,0,0,0,25,0,0,0,0,25,0,0,0,0]
[26,0,0,0,0,26,0,0,0,0,26,0,0,0,0]
[27,0,0,0,0,27,0,0,0,0,27,0,0,0,0]
[28,0,0,0,0,28,0,0,0,0,28,0,0,0,0]
[29,0,0,0,0,29,0,0,0,0,29,0,0,0,0]
[30,0,0,0,0,30,0,0,0,0,30,0,0,0,0]
[31,0,0,0,0,31,0,0,0,0,31,0,0,0,0]
[32,0,0,0,0,32,0,0,0,0,32,0,0,0,0]
[33,0,0,0,0,33,0,0,0,0,33,0,0,0,0]
[34,0,0,0,0,34,0,0,0,0,34,0,0,0,0]
[35,0,0,0,0,35,0,0,0,0,35,0,0,0,0]
[36,0,0,0,0,36,0,0,0,0,36,0,0,0,0]
[37,0,0,0,0,37,0,0,0,0,37,0,0,0,0]
[38,0,0,0,0,38,0,0,0,0,38,0,0,0,0]
[39,0,0,0,0,39,0,0,0,0,39,0,0,0,0]
[40,0,0,0,0,40,0,0,0,0,40,0,0,0,0]
[41,0,0,0,0,41,0,0,0,0,41,0,0,0,0]
[42,0,0,0,0,42,0,0,0,0,42,0,0,0,0]
[43,0,0,0,0,43,0,0,0,0,43,0,0,0,0]
[44,0,0,0,0,44,0,0,0,0,44,0,0,0,0]
[45,0,0,0,0,45,0,0,0,0,45,0,0,0,0]
[46,0,0,0,0,46,0,0,0,0,46,0,0,0,0]
[47,0,0,0,0,47,0,0,0,0,47,0,0,0,0]
[48,0,0,0,0,48,0,0,0,0,48,0,0,0,0]
[49,0,0,0,0,49,0,0,0,0,49,0,0,0,0]
[50,0,0,0,0,50,0,0,0,0,50,0,0,0,0]
[51,0,0,0,0,51,0,0,0,0,51,0,0,0,0]
[52,0,0,0,0,52,0,0,0,0,52,0,0,0,0]
[53,0,0,0,0,53,0,0,0,0,53,0,0,0,0]
[54,0,0,0,0,54,0,0,0,0,54,0,0,0,0]
[55,0,0,0,0,55,0,0,0,0,55,0,0,0,0]
[56,0,0,0,0,56,0,0,0,0,56,0,0,0,0]
[57,0,0,0,0,57,0,0,0,0,57,0,0,0,0]
[58,0,0,0,0,58,0,0,0,0,58,0,0,0,0]
[59,0,0,0,0,59,0,0,0,0,59,0,0,0,0]
[60,0,0,0,0,60,0,0,0,0,60,0,0,0,0]
[61,0,0,0,0,61,0,0,0,0,61,0,0,0,0]
[62,0,0,0,0,62,0,0,0,0,62,0,0,0,0]
[63,0,0,0,0,63,0,0,0,0,63,0,0,0,0]
[64,0,0,0,0,64,0,0,0,0,64,0,0,0,{"$f":"J236+E236","v":0}]
[65,{"$f":"B236-E237","v":0},{"$f":"-$E$87/12","v":0},0,{"$f":"C237-D237","v":0},65,{"$f":"G236-J237","v":0},{"$f":"-$E$93/12","v":0},{"$f":"G236*$E$91/12","v":0},{"$f":"H237-I237","v":0},65,{"$f":"G237+B237","v":0},0,0,0]
[{"$f":"A237+1","v":66},0,0,{"$f":"B237*$E$85/12","v":0},0,{"$f":"F237+1","v":66},0,0,0,0,{"$f":"K237+1","v":66},0,0,0,0]
[67,0,0,0,0,67,0,0,0,0,67,0,0,0,0]
[68,0,0,0,0,68,0,0,0,0,68,0,0,0,0]
[69,0,0,0,0,69,0,0,0,0,69,0,0,0,0]
[70,0,0,0,0,70,0,0,0,0,70,0,0,0,0]
[71,0,0,0,0,71,0,0,0,0,71,0,0,0,0]
[72,0,0,0,0,72,0,0,0,0,72,0,0,0,0]
[73,0,0,0,0,73,0,0,0,0,73,0,0,0,0]
[74,0,0,0,0,74,0,0,0,0,74,0,0,0,0]
[75,0,0,0,0,75,0,0,0,0,75,0,0,0,0]
[76,0,0,0,0,76,0,0,0,0,76,0,0,0,0]
[77,0,0,0,0,77,0,0,0,0,77,0,0,0,0]
[78,0,0,0,0,78,0,0,0,0,78,0,0,0,0]
[79,0,0,0,0,79,0,0,0,0,79,0,0,0,0]
[80,0,0,0,0,80,0,0,0,0,80,0,0,0,0]
[81,0,0,0,0,81,0,0,0,0,81,0,0,0,0]
[82,0,0,0,0,82,0,0,0,0,82,0,0,0,0]
[83,0,0,0,0,83,0,0,0,0,83,0,0,0,0]
[84,0,0,0,0,84,0,0,0,0,84,0,0,0,0]
[85,0,0,0,0,85,0,0,0,0,85,0,0,0,0]
[86,0,0,0,0,86,0,0,0,0,86,0,0,0,0]
[87,0,0,0,0,87,0,0,0,0,87,0,0,0,0]
[88,0,0,0,0,88,0,0,0,0,88,0,0,0,0]
[89,0,0,0,0,89,0,0,0,0,89,0,0,0,0]
[90,0,0,0,0,90,0,0,0,0,90,0,0,0,0]
[91,0,0,0,0,91,0,0,0,0,91,0,0,0,0]
[92,0,0,0,0,92,0,0,0,0,92,0,0,0,0]
[93,0,0,0,0,93,0,0,0,0,93,0,0,0,0]
[94,0,0,0,0,94,0,0,0,0,94,0,0,0,0]
[95,0,0,0,0,95,0,0,0,0,95,0,0,0,0]
[96,0,0,0,0,96,0,0,0,0,96,0,0,0,0]
[97,0,0,0,0,97,0,0,0,0,97,0,0,0,0]
[98,0,0,0,0,98,0,0,0,0,98,0,0,0,0]
[99,0,0,0,0,99,0,0,0,0,99,0,0,0,0]
[100,0,0,0,0,100,0,0,0,0,100,0,0,0,0]
[101,0,0,0,0,101,0,0,0,0,101,0,0,0,0]
[102,0,0,0,0,102,0,0,0,0,102,0,0,0,0]
[103,0,0,0,0,103,0,0,0,0,103,0,0,0,0]
[104,0,0,0,0,104,0,0,0,0,104,0,0,0,0]
[105,0,0,0,0,105,0,0,0,0,105,0,0,0,0]
[106,0,0,0,0,106,0,0,0,0,106,0,0,0,0]
[107,0,0,0,0,107,0,0,0,0,107,0,0,0,0]
[108,0,0,0,0,108,0,0,0,0,108,0,0,0,0]
[109,0,0,0,0,109,0,0,0,0,109,0,0,0,0]
[110,0,0,0,0,110,0,0,0,0,110,0,0,0,0]
[111,0,0,0,0,111,0,0,0,0,111,0,0,0,0]
[112,0,0,0,0,112,0,0,0,0,112,0,0,0,0]
[113,0,0,0,0,113,0,0,0,0,113,0,0,0,0]
[114,0,0,0,0,114,0,0,0,0,114,0,0,0,0]
[115,0,0,0,0,115,0,0,0,0,115,0,0,0,0]
[116,0,0,0,0,116,0,0,0,0,116,0,0,0,0]
[117,0,0,0,0,117,0,0,0,0,117,0,0,0,0]
[118,0,0,0,0,118,0,0,0,0,118,0,0,0,0]
[119,0,0,0,0,119,0,0,0,0,119,0,0,0,0]
[120,0,0,0,0,120,0,0,0,0,120,0,0,0,0]
[121,0,0,0,0,121,0,0,0,0,121,0,0,0,0]
[122,0,0,0,0,122,0,0,0,0,122,0,0,0,0]
[123,0,0,0,0,123,0,0,0,0,123,0,0,0,0]
[124,0,0,0,0,124,0,0,0,0,124,0,0,0,0]
[125,0,0,0,0,125,0,0,0,0,125,0,0,0,0]
[126,0,0,0,0,126,0,0,0,0,126,0,0,0,0]
[127,0,0,0,0,127,0,0,0,0,127,0,0,0,0]
[128,0,0,0,0,128,0,0,0,0,128,0,0,0,0]
[129,{"$f":"B300-E301","v":0},{"$f":"-$E$87/12","v":0},0,{"$f":"C301-D301","v":0},129,{"$f":"G300-J301","v":0},{"$f":"-$E$93/12","v":0},{"$f":"G300*$E$91/12","v":0},{"$f":"H301-I301","v":0},129,{"$f":"G301+B301","v":0},0,0,0]
[{"$f":"A301+1","v":130},0,0,{"$f":"B301*$E$85/12","v":0},0,{"$f":"F301+1","v":130},0,0,0,0,{"$f":"K301+1","v":130},0,0,0,0]
[131,0,0,0,0,131,0,0,0,0,131,0,0,0,0]
[132,0,0,0,0,132,0,0,0,0,132,0,0,0,0]
[133,0,0,0,0,133,0,0,0,0,133,0,0,0,0]
[134,0,0,0,0,134,0,0,0,0,134,0,0,0,0]
[135,0,0,0,0,135,0,0,0,0,135,0,0,0,0]
[136,0,0,0,0,136,0,0,0,0,136,0,0,0,0]
[137,0,0,0,0,137,0,0,0,0,137,0,0,0,0]
[138,0,0,0,0,138,0,0,0,0,138,0,0,0,0]
[139,0,0,0,0,139,0,0,0,0,139,0,0,0,0]
[140,0,0,0,0,140,0,0,0,0,140,0,0,0,0]
[141,0,0,0,0,141,0,0,0,0,141,0,0,0,0]
[142,0,0,0,0,142,0,0,0,0,142,0,0,0,0]
[143,0,0,0,0,143,0,0,0,0,143,0,0,0,0]
[144,0,0,0,0,144,0,0,0,0,144,0,0,0,0]
[145,0,0,0,0,145,0,0,0,0,145,0,0,0,0]
[146,0,0,0,0,146,0,0,0,0,146,0,0,0,0]
[147,0,0,0,0,147,0,0,0,0,147,0,0,0,0]
[148,0,0,0,0,148,0,0,0,0,148,0,0,0,0]
[149,0,0,0,0,149,0,0,0,0,149,0,0,0,0]
[150,0,0,0,0,150,0,0,0,0,150,0,0,0,0]
[151,0,0,0,0,151,0,0,0,0,151,0,0,0,0]
[152,0,0,0,0,152,0,0,0,0,152,0,0,0,0]
[153,0,0,0,0,153,0,0,0,0,153,0,0,0,0]
[154,0,0,0,0,154,0,0,0,0,154,0,0,0,0]
[155,0,0,0,0,155,0,0,0,0,155,0,0,0,0]
[156,0,0,0,0,156,0,0,0,0,156,0,0,0,0]
[157,0,0,0,0,157,0,0,0,0,157,0,0,0,0]
[158,0,0,0,0,158,0,0,0,0,158,0,0,0,0]
[159,0,0,0,0,159,0,0,0,0,159,0,0,0,0]
[160,0,0,0,0,160,0,0,0,0,160,0,0,0,0]
[161,0,0,0,0,161,0,0,0,0,161,0,0,0,0]
[162,0,0,0,0,162,0,0,0,0,162,0,0,0,0]
[163,0,0,0,0,163,0,0,0,0,163,0,0,0,0]
[164,0,0,0,0,164,0,0,0,0,164,0,0,0,0]
[165,0,0,0,0,165,0,0,0,0,165,0,0,0,0]
[166,0,0,0,0,166,0,0,0,0,166,0,0,0,0]
[167,0,0,0,0,167,0,0,0,0,167,0,0,0,0]
[168,0,0,0,0,168,0,0,0,0,168,0,0,0,0]
[169,0,0,0,0,169,0,0,0,0,169,0,0,0,0]
[170,0,0,0,0,170,0,0,0,0,170,0,0,0,0]
[171,0,0,0,0,171,0,0,0,0,171,0,0,0,0]
[172,0,0,0,0,172,0,0,0,0,172,0,0,0,0]
[173,0,0,0,0,173,0,0,0,0,173,0,0,0,0]
[174,0,0,0,0,174,0,0,0,0,174,0,0,0,0]
[175,0,0,0,0,175,0,0,0,0,175,0,0,0,0]
[176,0,0,0,0,176,0,0,0,0,176,0,0,0,0]
[177,0,0,0,0,177,0,0,0,0,177,0,0,0,0]
[178,0,0,0,0,178,0,0,0,0,178,0,0,0,0]
[179,0,0,0,0,179,0,0,0,0,179,0,0,0,0]
[180,0,0,0,0,180,0,0,0,0,180,0,0,0,0]
[181,0,0,0,0,181,0,0,0,0,181,0,0,0,0]
[182,0,0,0,0,182,0,0,0,0,182,0,0,0,0]
[183,0,0,0,0,183,0,0,0,0,183,0,0,0,0]
[184,0,0,0,0,184,0,0,0,0,184,0,0,0,0]
[185,0,0,0,0,185,0,0,0,0,185,0,0,0,0]
[186,0,0,0,0,186,0,0,0,0,186,0,0,0,0]
[187,0,0,0,0,187,0,0,0,0,187,0,0,0,0]
[188,0,0,0,0,188,0,0,0,0,188,0,0,0,0]
[189,0,0,0,0,189,0,0,0,0,189,0,0,0,0]
[190,0,0,0,0,190,0,0,0,0,190,0,0,0,0]
[191,0,0,0,0,191,0,0,0,0,191,0,0,0,0]
[192,0,0,0,0,192,0,0,0,0,192,0,0,0,{"$f":"J364+E364","v":0}]
[193,{"$f":"B364-E365","v":0},{"$f":"-$E$87/12","v":0},0,{"$f":"C365-D365","v":0},193,{"$f":"G364-J365","v":0},{"$f":"-$E$93/12","v":0},{"$f":"G364*$E$91/12","v":0},{"$f":"H365-I365","v":0},193,{"$f":"G365+B365","v":0},0,0,0]
[{"$f":"A365+1","v":194},0,0,{"$f":"B365*$E$85/12","v":0},0,{"$f":"F365+1","v":194},0,0,0,0,{"$f":"K365+1","v":194},0,0,0,0]
[195,0,0,0,0,195,0,0,0,0,195,0,0,0,0]
[196,0,0,0,0,196,0,0,0,0,196,0,0,0,0]
[197,0,0,0,0,197,0,0,0,0,197,0,0,0,0]
[198,0,0,0,0,198,0,0,0,0,198,0,0,0,0]
[199,0,0,0,0,199,0,0,0,0,199,0,0,0,0]
[200,0,0,0,0,200,0,0,0,0,200,0,0,0,0]
[201,0,0,0,0,201,0,0,0,0,201,0,0,0,0]
[202,0,0,0,0,202,0,0,0,0,202,0,0,0,0]
[203,0,0,0,0,203,0,0,0,0,203,0,0,0,0]
[204,0,0,0,0,204,0,0,0,0,204,0,0,0,0]
[205,0,0,0,0,205,0,0,0,0,205,0,0,0,0]
[206,0,0,0,0,206,0,0,0,0,206,0,0,0,0]
[207,0,0,0,0,207,0,0,0,0,207,0,0,0,0]
[208,0,0,0,0,208,0,0,0,0,208,0,0,0,0]
[209,0,0,0,0,209,0,0,0,0,209,0,0,0,0]
[210,0,0,0,0,210,0,0,0,0,210,0,0,0,0]
[211,0,0,0,0,211,0,0,0,0,211,0,0,0,0]
[212,0,0,0,0,212,0,0,0,0,212,0,0,0,0]
[213,0,0,0,0,213,0,0,0,0,213,0,0,0,0]
[214,0,0,0,0,214,0,0,0,0,214,0,0,0,0]
[215,0,0,0,0,215,0,0,0,0,215,0,0,0,0]
[216,0,0,0,0,216,0,0,0,0,216,0,0,0,0]
[217,0,0,0,0,217,0,0,0,0,217,0,0,0,0]
[218,0,0,0,0,218,0,0,0,0,218,0,0,0,0]
[219,0,0,0,0,219,0,0,0,0,219,0,0,0,0]
[220,0,0,0,0,220,0,0,0,0,220,0,0,0,0]
[221,0,0,0,0,221,0,0,0,0,221,0,0,0,0]
[222,0,0,0,0,222,0,0,0,0,222,0,0,0,0]
[223,0,0,0,0,223,0,0,0,0,223,0,0,0,0]
[224,0,0,0,0,224,0,0,0,0,224,0,0,0,0]
[225,0,0,0,0,225,0,0,0,0,225,0,0,0,0]
[226,0,0,0,0,226,0,0,0,0,226,0,0,0,0]
[227,0,0,0,0,227,0,0,0,0,227,0,0,0,0]
[228,0,0,0,0,228,0,0,0,0,228,0,0,0,0]
[229,0,0,0,0,229,0,0,0,0,229,0,0,0,0]
[230,0,0,0,0,230,0,0,0,0,230,0,0,0,0]
[231,0,0,0,0,231,0,0,0,0,231,0,0,0,0]
[232,0,0,0,0,232,0,0,0,0,232,0,0,0,0]
[233,0,0,0,0,233,0,0,0,0,233,0,0,0,0]
[234,0,0,0,0,234,0,0,0,0,234,0,0,0,0]
[235,0,0,0,0,235,0,0,0,0,235,0,0,0,0]
[236,0,0,0,0,236,0,0,0,0,236,0,0,0,0]
[237,0,0,0,0,237,0,0,0,0,237,0,0,0,0]
[238,0,0,0,0,238,0,0,0,0,238,0,0,0,0]
[239,0,0,0,0,239,0,0,0,0,239,0,0,0,0]
[240,0,0,0,0,240,0,0,0,0,240,0,0,0,0]
[241,0,0,0,0,241,0,0,0,0,241,0,0,0,0]
[242,0,0,0,0,242,0,0,0,0,242,0,0,0,0]
[243,0,0,0,0,243,0,0,0,0,243,0,0,0,0]
[244,0,0,0,0,244,0,0,0,0,244,0,0,0,0]
[245,0,0,0,0,245,0,0,0,0,245,0,0,0,0]
[246,0,0,0,0,246,0,0,0,0,246,0,0,0,0]
[247,0,0,0,0,247,0,0,0,0,247,0,0,0,0]
[248,0,0,0,0,248,0,0,0,0,248,0,0,0,0]
[249,0,0,0,0,249,0,0,0,0,249,0,0,0,0]
[250,0,0,0,0,250,0,0,0,0,250,0,0,0,0]
[251,0,0,0,0,251,0,0,0,0,251,0,0,0,0]
[252,0,0,0,0,252,0,0,0,0,252,0,0,0,0]
[253,0,0,0,0,253,0,0,0,0,253,0,0,0,0]
[254,0,0,0,0,254,0,0,0,0,254,0,0,0,0]
[255,0,0,0,0,255,0,0,0,0,255,0,0,0,0]
[256,0,0,0,0,256,0,0,0,0,256,0,0,0,0]
[257,{"$f":"B428-E429","v":0},{"$f":"-$E$87/12","v":0},0,{"$f":"C429-D429","v":0},257,{"$f":"G428-J429","v":0},{"$f":"-$E$93/12","v":0},{"$f":"G428*$E$91/12","v":0},{"$f":"H429-I429","v":0},257,{"$f":"G429+B429","v":0},0,0,0]
[{"$f":"A429+1","v":258},0,0,{"$f":"B429*$E$85/12","v":0},0,{"$f":"F429+1","v":258},0,0,0,0,{"$f":"K429+1","v":258},0,0,0,0]
[259,0,0,0,0,259,0,0,0,0,259,0,0,0,0]
[260,0,0,0,0,260,0,0,0,0,260,0,0,0,0]
[261,0,0,0,0,261,0,0,0,0,261,0,0,0,0]
[262,0,0,0,0,262,0,0,0,0,262,0,0,0,0]
[263,0,0,0,0,263,0,0,0,0,263,0,0,0,0]
[264,0,0,0,0,264,0,0,0,0,264,0,0,0,0]
[265,0,0,0,0,265,0,0,0,0,265,0,0,0,0]
[266,0,0,0,0,266,0,0,0,0,266,0,0,0,0]
[267,0,0,0,0,267,0,0,0,0,267,0,0,0,0]
[268,0,0,0,0,268,0,0,0,0,268,0,0,0,0]
[269,0,0,0,0,269,0,0,0,0,269,0,0,0,0]
[270,0,0,0,0,270,0,0,0,0,270,0,0,0,0]
[271,0,0,0,0,271,0,0,0,0,271,0,0,0,0]
[272,0,0,0,0,272,0,0,0,0,272,0,0,0,0]
[273,0,0,0,0,273,0,0,0,0,273,0,0,0,0]
[274,0,0,0,0,274,0,0,0,0,274,0,0,0,0]
[275,0,0,0,0,275,0,0,0,0,275,0,0,0,0]
[276,0,0,0,0,276,0,0,0,0,276,0,0,0,0]
[277,0,0,0,0,277,0,0,0,0,277,0,0,0,0]
[278,0,0,0,0,278,0,0,0,0,278,0,0,0,0]
[279,0,0,0,0,279,0,0,0,0,279,0,0,0,0]
[280,0,0,0,0,280,0,0,0,0,280,0,0,0,0]
[281,0,0,0,0,281,0,0,0,0,281,0,0,0,0]
[282,0,0,0,0,282,0,0,0,0,282,0,0,0,0]
[283,0,0,0,0,283,0,0,0,0,283,0,0,0,0]
[284,0,0,0,0,284,0,0,0,0,284,0,0,0,0]
[285,0,0,0,0,285,0,0,0,0,285,0,0,0,0]
[286,0,0,0,0,286,0,0,0,0,286,0,0,0,0]
[287,0,0,0,0,287,0,0,0,0,287,0,0,0,0]
[288,0,0,0,0,288,0,0,0,0,288,0,0,0,0]
[289,0,0,0,0,289,0,0,0,0,289,0,0,0,0]
[290,0,0,0,0,290,0,0,0,0,290,0,0,0,0]
[291,0,0,0,0,291,0,0,0,0,291,0,0,0,0]
[292,0,0,0,0,292,0,0,0,0,292,0,0,0,0]
[293,0,0,0,0,293,0,0,0,0,293,0,0,0,0]
[294,0,0,0,0,294,0,0,0,0,294,0,0,0,0]
[295,0,0,0,0,295,0,0,0,0,295,0,0,0,0]
[296,0,0,0,0,296,0,0,0,0,296,0,0,0,0]
[297,0,0,0,0,297,0,0,0,0,297,0,0,0,0]
[298,0,0,0,0,298,0,0,0,0,298,0,0,0,0]
[299,0,0,0,0,299,0,0,0,0,299,0,0,0,0]
[300,0,0,0,0,300,0,0,0,0,300,0,0,0,0]
[301,0,0,0,0,301,0,0,0,0,301,0,0,0,0]
[302,0,0,0,0,302,0,0,0,0,302,0,0,0,0]
[303,0,0,0,0,303,0,0,0,0,303,0,0,0,0]
[304,0,0,0,0,304,0,0,0,0,304,0,0,0,0]
[305,0,0,0,0,305,0,0,0,0,305,0,0,0,0]
[306,0,0,0,0,306,0,0,0,0,306,0,0,0,0]
[307,0,0,0,0,307,0,0,0,0,307,0,0,0,0]
[308,0,0,0,0,308,0,0,0,0,308,0,0,0,0]
[309,0,0,0,0,309,0,0,0,0,309,0,0,0,0]
[310,0,0,0,0,310,0,0,0,0,310,0,0,0,0]
[311,0,0,0,0,311,0,0,0,0,311,0,0,0,0]
[312,0,0,0,0,312,0,0,0,0,312,0,0,0,0]
[313,0,0,0,0,313,0,0,0,0,313,0,0,0,0]
[314,0,0,0,0,314,0,0,0,0,314,0,0,0,0]
[315,0,0,0,0,315,0,0,0,0,315,0,0,0,0]
[316,0,0,0,0,316,0,0,0,0,316,0,0,0,0]
[317,0,0,0,0,317,0,0,0,0,317,0,0,0,0]
[318,0,0,0,0,318,0,0,0,0,318,0,0,0,0]
[319,0,0,0,0,319,0,0,0,0,319,0,0,0,0]
[320,0,0,0,0,320,0,0,0,0,320,0,0,0,{"$f":"J492+E492","v":0}]
[321,{"$f":"B492-E493","v":0},{"$f":"-$E$87/12","v":0},0,{"$f":"C493-D493","v":0},321,{"$f":"G492-J493","v":0},{"$f":"-$E$93/12","v":0},{"$f":"G492*$E$91/12","v":0},{"$f":"H493-I493","v":0},321,{"$f":"G493+B493","v":0},0,0,0]
[{"$f":"A493+1","v":322},0,0,{"$f":"B493*$E$85/12","v":0},0,{"$f":"F493+1","v":322},0,0,0,0,{"$f":"K493+1","v":322},0,0,0,0]
[323,0,0,0,0,323,0,0,0,0,323,0,0,0,0]
[324,0,0,0,0,324,0,0,0,0,324,0,0,0,0]
[325,0,0,0,0,325,0,0,0,0,325,0,0,0,0]
[326,0,0,0,0,326,0,0,0,0,326,0,0,0,0]
[327,0,0,0,0,327,0,0,0,0,327,0,0,0,0]
[328,0,0,0,0,328,0,0,0,0,328,0,0,0,0]
[329,0,0,0,0,329,0,0,0,0,329,0,0,0,0]
[330,0,0,0,0,330,0,0,0,0,330,0,0,0,0]
[331,0,0,0,0,331,0,0,0,0,331,0,0,0,0]
[332,0,0,0,0,332,0,0,0,0,332,0,0,0,0]
[333,0,0,0,0,333,0,0,0,0,333,0,0,0,0]
[334,0,0,0,0,334,0,0,0,0,334,0,0,0,0]
[335,0,0,0,0,335,0,0,0,0,335,0,0,0,0]
[336,0,0,0,0,336,0,0,0,0,336,0,0,0,0]
[337,0,0,0,0,337,0,0,0,0,337,0,0,0,0]
[338,0,0,0,0,338,0,0,0,0,338,0,0,0,0]
[339,0,0,0,0,339,0,0,0,0,339,0,0,0,0]
[340,0,0,0,0,340,0,0,0,0,340,0,0,0,0]
[341,0,0,0,0,341,0,0,0,0,341,0,0,0,0]
[342,0,0,0,0,342,0,0,0,0,342,0,0,0,0]
[343,0,0,0,0,343,0,0,0,0,343,0,0,0,0]
[344,0,0,0,0,344,0,0,0,0,344,0,0,0,0]
[345,0,0,0,0,345,0,0,0,0,345,0,0,0,0]
[346,0,0,0,0,346,0,0,0,0,346,0,0,0,0]
[347,0,0,0,0,347,0,0,0,0,347,0,0,0,0]
[348,0,0,0,0,348,0,0,0,0,348,0,0,0,0]
[349,0,0,0,0,349,0,0,0,0,349,0,0,0,0]
[350,0,0,0,0,350,0,0,0,0,350,0,0,0,0]
[351,0,0,0,0,351,0,0,0,0,351,0,0,0,0]
[352,0,0,0,0,352,0,0,0,0,352,0,0,0,0]
[353,0,0,0,0,353,0,0,0,0,353,0,0,0,0]
[354,0,0,0,0,354,0,0,0,0,354,0,0,0,0]
[355,0,0,0,0,355,0,0,0,0,355,0,0,0,0]
[356,0,0,0,0,356,0,0,0,0,356,0,0,0,0]
[357,0,0,0,0,357,0,0,0,0,357,0,0,0,0]
[358,0,0,0,0,358,0,0,0,0,358,0,0,0,0]
[359,0,0,0,0,359,0,0,0,0,359,0,0,0,0]
[360,0,0,0,0,360,0,0,0,0,360,0,0,0,0]

{"sheet":"Commercial Parking","index":24,"n_rows":536,"n_cols":30,"rows_kept":536,"cut":false,"hidden":true,"merged":[]}
["ROI Template - Commercial Parking"]
[]
["Leveraging Tools",null,null,"Summary","User override ","TOTAL",null,"Investment Targets and Performance"]
["Tax Credits net to project",null,null,{"$f":"'Gap Financing Options'!H122","v":0},0,{"$f":"IF('Basic Financial'!$B$34=0,D4,0)","v":0},null,"Performance Indicator",null,null,null,"Target","Actual","NPV"]
["Fee Reductions",null,null,{"$f":"'Gap Financing Options'!H88","v":0},0,{"$f":"IF('Basic Financial'!$B$34=0,D5,0)","v":0},null,"Cash-on-Cash After Year 3",null,null,null,{"$f":"'Advanced Financial'!H67","v":0.1},{"$f":"G135","v":0}]
["Grants",null,null,{"$f":"'Gap Financing Options'!H98","v":0},0,{"$f":"IF('Basic Financial'!$B$34=0,D6,('Basic Financial'!$B$34*'Development Costs'!F48))","v":0},null,"IRR on Project Cost (Unleveraged Return)",null,null,null,{"$f":"'Advanced Financial'!H68","v":0.1},{"$f":"N149","v":0},{"$f":"N150","v":0}]
["Total Development Offsets (Contributions to Equity)",null,null,null,null,{"$f":"SUM(F4:F6)","v":0},null,"IRR on Investor Equity (Leveraged Return Before Tax)",null,null,null,{"$f":"'Advanced Financial'!H69","v":0.25},{"$f":"N157","v":0},{"$f":"N158","v":0}]
["Net Development Costs",null,null,null,null,{"$f":"(D57-F7)","v":0},null,"Debt Service Coverage Ratio (Year 3)",null,null,null,{"$f":"'Advanced Financial'!H70","v":1.25},{"$f":"IFERROR(G129/G131,0)","v":0}]
[null,null,null,null,null,null,null,"IRR on Public Participation",null,null,null,{"$f":"E112","v":0.05},{"$f":"N167","v":0},{"$f":"N168","v":0}]
[]
[]
[]
["Local Property Tax Rate Available for abatement",null,null,{"$f":"'Gap Financing Options'!H15","v":0}]
["Local Sales Tax Rate Available for abatement",null,null,{"$f":"'Gap Financing Options'!H37","v":0}]
[]
["Net Operating Income Analysis"]
["Total Development Costs",null,null,{"$f":"-'Development Costs'!E48","v":0}]
["Project Feature",null,null,"Project","Rent"]
["Total project size, square feet",null,null,{"$f":"'Physical Outputs'!C36","v":0},{"$f":"('Basic Financial'!B64/'Physical Inputs'!C100)*'Advanced Financial'!B24*12*365","v":52.838095238095235},"per square foot/year"]
[]
["Other Income",null,null,{"$f":"'Advanced Financial'!H80","v":0}]
["Less: Vacancy",null,null,{"$f":"1-'Advanced Financial'!C36","v":0.30000000000000004}]
["Less: Concessions, Bad Debt",null,null,{"$f":"'Advanced Financial'!H81","v":0}]
["Less: Operating Costs/sq.ft.",null,null,{"$f":"'Advanced Financial'!H82/'Physical Inputs'!C100","v":0}]
[]
["Initial Project Value Analysis"]
["Property Value (Year 1)"]
["Going in Cap Rate",null,null,{"$f":"'Advanced Financial'!H83","v":0}]
[]
["Debt Financing"]
["Primary Debt"]
["Maximum LTV",null,null,{"$f":"'Advanced Financial'!H91","v":0.7}]
["Rate",null,null,{"$f":"'Advanced Financial'!H92","v":0.06}]
["Amortization Period, Years",null,null,{"$f":"'Advanced Financial'!H93","v":25}]
["Public Leveraging Loan"]
["Maximum LTV",null,null,{"$f":"IF(D43=1,'Gap Financing Options'!I69,0)","v":0}]
["Rate",null,null,{"$f":"IF(D43=1,'Gap Financing Options'!I70,0)","v":0}]
["Amortization Period, Years",null,null,{"$f":"IF(D43=1,'Gap Financing Options'!I71,0)","v":0}]
["Public Participation"]
["Capital Investment",null,null,{"$f":"IF(D43=1,'Gap Financing Options'!I75,0)","v":0}]
["Annual Cash Throw Off",null,null,{"$f":"IF(D43=1,'Gap Financing Options'!I76,0)","v":0}]
["Share of Net Sales Price",null,null,{"$f":"IF(D43=1,'Gap Financing Options'!I77,0)","v":0}]
["Public Leveraging Loan Included in Analysis?(1=Yes; 0=No) ",null,null,{"$f":"'Gap Financing Options'!I68","v":0}]
["Target IRR",null,null,{"$f":"'Advanced Financial'!H71","v":0.05}]
[]
["Operating Statement"]
["GPI",null,"Escalation",{"$f":"'Advanced Financial'!H84","v":0}]
["EGI"]
["Less: Operating Costs",null,"Escalation",{"$f":"'Advanced Financial'!H85","v":0}]
[]
["Project Value",null,null,"Year 1"]
["Terminal Cap Rate, Gross Sales Price",null,null,{"$f":"'Advanced Financial'!H87","v":0}]
["Net Sales = Price Less Sales Cost",null,null,{"$f":"'Advanced Financial'!H88","v":0}]
[]
[]
["Net Operating Income Analysis"]
["Total Development Costs",null,null,{"$f":"D17","v":0}]
["Development Costs Per Sq Ft",null,null,{"$f":"IFERROR(D57/D60,0)","v":0}]
["Project Feature",null,null,"Project","Rent"]
["Total project size, square feet",null,null,{"$f":"D19","v":0},{"$f":"E19","v":52.838095238095235},"per square foot/year"]
["Projected Sales per Square Foot",null,null,null,{"$f":"E20","v":0}]
["Rental Income from Sales Assessment",null,null,null,{"$f":"(D60*E61)*'Advanced Financial'!H79","v":0}]
["Gross Potential Rent  (GPI)",null,null,null,{"$f":"(D60*E60)+E62","v":0}]
["Other Income",null,null,{"$f":"D21","v":0},{"$f":"D64*E63","v":0}]
["Total Income",null,null,null,{"$f":"E63+E64","v":0}]
["Less: Vacancy",null,null,{"$f":"D22","v":0.30000000000000004},{"$f":"E65*D66","v":0}]
["Less: Concessions, Bad Debt",null,null,{"$f":"D23","v":0},{"$f":"E65*D67","v":0}]
["Effective Gross Income  (EGI)",null,null,null,{"$f":"E65-E66-E67","v":0}]
["Less: Operating Costs/sq.ft.",null,null,{"$f":"D24","v":0},{"$f":"D69*D60","v":0}]
["Net Operating Income",null,null,null,{"$f":"E68-E69","v":0}]
[]
["Initial Project Value Analysis"]
["CAP RATE (Yield to Costs)",null,null,{"$f":"IFERROR(E70/F8,0)","v":0}]
["Debt Service",null,null,{"$f":"IFERROR(-E99,0)","v":0}]
["Cash Flow",null,null,{"$f":"E70-D74","v":0}]
["Return on Equity (Year 1)",null,null,{"$f":"IFERROR(D75/E104,0)","v":0}]
["Property Value (Year 1)"]
["NOI",null,null,{"$f":"E70","v":0}]
["Going in Cap Rate",null,null,{"$f":"D28","v":0}]
["Project Market Value",null,null,{"$f":"IFERROR(D78/D79,0)","v":0}]
["Net Project Value",null,null,{"$f":"D80-D57","v":0}]
[]
["Debt Financing"]
["Primary Debt"]
["Total Value",null,null,null,{"$f":"D57","v":0}]
["Maximum LTV",null,null,{"$f":"D32","v":0.7},{"$f":"E85*D86","v":0}]
["Imputed Loan Amount",null,null,null,{"$f":"E86","v":0}]
["Rate",null,null,null,{"$f":"D33","v":0.06}]
["Amortization Period, Years",null,null,null,{"$f":"D34","v":25}]
["Annual Debt Service (Amortized)",null,null,null,{"$f":"IFERROR(PMT(E88/12,E89*12,E87)*12,0)","v":0}]
["Public Leveraging Loan"]
["Maximum LTV",null,null,{"$f":"IF(D43=1,D36,0)","v":0},{"$f":"IF(E85*D92>'Gap Financing Options'!B79*'Development Costs'!F48,'Gap Financing Options'!B79*'Development Costs'!F48,E85*D92)","v":0}]
["Imputed Loan Amount",null,null,null,{"$f":"IF(AND(D43=1,'Basic Financial'!B34=0),E92+'Gap Financing Options'!I74,0)","v":0}]
["Rate",null,null,null,{"$f":"IF(D43=1,D37,0)","v":0}]
["Amortization Period, Years",null,null,null,{"$f":"IF(D43=1,D38,0)","v":0}]
["Annual Debt Service (Amortized)",null,null,null,{"$f":"IFERROR(PMT(E94/12,E95*12,E93)*12,0)","v":0}]
[]
["Total Debt",null,null,null,{"$f":"E87+E93","v":0}]
["Total Debt Service",null,null,null,{"$f":"E90+E96","v":0}]
["Summary"]
["Total Development Costs",null,null,null,{"$f":"D57","v":0}]
["Equity Required",null,null,null,{"$f":"IF(E101-E98<0,1,E101-E98)","v":0}]
["Total Development Offsets (Contributions to Equity)",null,null,null,{"$f":"F7","v":0}]
["Net Equity Required",null,null,null,{"$f":"E102-E103","v":0}]
["Total Project Cost",null,null,null,{"$f":"E101","v":0}]
["Total Project Cost After Development Offsets",null,null,null,{"$f":"E105-E103","v":0}]
["Public Participation"]
["Capital Investment",null,null,null,{"$f":"D40","v":0}]
["Annual Cash Throw Off",null,null,null,{"$f":"D41","v":0}]
["Share of Net Sales Price",null,null,null,{"$f":"D42","v":0}]
["Public Leveraging Loan Included in Analysis? ",null,null,"(1=Yes; 0=No)",{"$f":"D43","v":0}]
["Target IRR",null,null,null,{"$f":"D44","v":0.05}]
[]
[]
[]
["Operating Statement",null,null,null,"Year 1","Year 2","Year 3","Year 4","Year 5","Year 6","Year 7","Year 8","Year 9","Year 10"]
["GPI",null,"Escalation",{"$f":"D47","v":0},{"$f":"E63","v":0},{"$f":"E117*(1+$D$117)","v":0},0,0,0,0,0,0,0,0]
["Other Income",null,null,null,{"$f":"E64","v":0},0,0,0,0,0,0,0,0,0]
["Total Income",null,null,null,{"$f":"E117+E118","v":0},0,0,0,0,0,0,0,0,0]
["Less: Vacancy",null,null,{"$f":"D66","v":0.30000000000000004},{"$f":"$D$120*E119","v":0},0,0,0,0,0,0,0,0,0]
["Less: Concessions, Market Loss",null,null,{"$f":"D67","v":0},{"$f":"$D$121*E119","v":0},0,0,0,0,0,0,0,0,0]
["EGI",null,null,null,{"$f":"E119-E120-E121","v":0},0,0,0,0,0,0,0,0,0]
["Less: Operating Costs",null,"Escalation",{"$f":"D49","v":0},{"$f":"E69","v":0},{"$f":"E123*(1+$D$123)","v":0},0,0,0,0,0,0,0,0]
["Less: Property Taxes",null,"Millage Rate",{"$f":"'Advanced Financial'!H63","v":0},{"$f":"$D17*$D124*'Advanced Financial'!$H64","v":0},{"$f":"$D17*$D124*'Advanced Financial'!$H64*(1+'Advanced Financial'!H86)","v":0},{"$f":"$D17*$D124*'Advanced Financial'!$H64*(1+'Advanced Financial'!H86)^2","v":0},{"$f":"$D17*$D124*'Advanced Financial'!$H64*(1+'Advanced Financial'!H86)^3","v":0},{"$f":"$D17*$D124*'Advanced Financial'!$H64*(1+'Advanced Financial'!H86)^4","v":0},{"$f":"$D17*$D124*'Advanced Financial'!$H64*(1+'Advanced Financial'!H86)^5","v":0},{"$f":"$D17*$D124*'Advanced Financial'!$H64*(1+'Advanced Financial'!H86)^6","v":0},{"$f":"$D17*$D124*'Advanced Financial'!$H64*(1+'Advanced Financial'!H86)^7","v":0},{"$f":"$D17*$D124*'Advanced Financial'!$H64*(1+'Advanced Financial'!H86)^8","v":0},{"$f":"$D17*$D124*'Advanced Financial'!$H64*(1+'Advanced Financial'!H86)^9","v":0}]
["Plus: Property Tax Abatement",null,null,null,{"$f":"IF(OR(BF_Subsidy=0,BF_Subsidy=\"\"),$D$13*'Advanced Financial'!$H64*$F8*'Gap Financing Options'!H17,0)","v":0},{"$f":"IF(OR(BF_Subsidy=0,BF_Subsidy=\"\"),$D$13*'Advanced Financial'!$H64*$F8*(1+$D$117)*'Gap Financing Options'!H18,0)","v":0},{"$f":"IF(OR(BF_Subsidy=0,BF_Subsidy=\"\"),$D$13*'Advanced Financial'!$H64*$F8*(1+$D$117)^2*'Gap Financing Options'!H19,0)","v":0},{"$f":"IF(OR(BF_Subsidy=0,BF_Subsidy=\"\"),$D$13*'Advanced Financial'!$H64*$F8*(1+$D$117)^3*'Gap Financing Options'!H20,0)","v":0},{"$f":"IF(OR(BF_Subsidy=0,BF_Subsidy=\"\"),$D$13*'Advanced Financial'!$H64*$F8*(1+$D$117)^4*'Gap Financing Options'!H21,0)","v":0},{"$f":"IF(OR(BF_Subsidy=0,BF_Subsidy=\"\"),$D$13*'Advanced Financial'!$H64*$F8*(1+$D$117)^5*'Gap Financing Options'!H22,0)","v":0},{"$f":"IF(OR(BF_Subsidy=0,BF_Subsidy=\"\"),$D$13*'Advanced Financial'!$H64*$F8*(1+$D$117)^6*'Gap Financing Options'!H23,0)","v":0},{"$f":"IF(OR(BF_Subsidy=0,BF_Subsidy=\"\"),$D$13*'Advanced Financial'!$H64*$F8*(1+$D$117)^7*'Gap Financing Options'!H24,0)","v":0},{"$f":"IF(OR(BF_Subsidy=0,BF_Subsidy=\"\"),$D$13*'Advanced Financial'!$H64*$F8*(1+$D$117)^8*'Gap Financing Options'!H25,0)","v":0},{"$f":"IF(OR(BF_Subsidy=0,BF_Subsidy=\"\"),$D$13*'Advanced Financial'!$H64*$F8*(1+$D$117)^9*'Gap Financing Options'!H26,0)","v":0}]
[]
[]
["Cash Throw Off to Public Partner",null,null,null,{"$f":"IF(OR(BF_Subsidy=0,BF_Subsidy=\"\"),-$E$109,0)","v":0},0,0,0,0,0,0,0,0,0]
["NOI",null,null,null,{"$f":"E122-E124-E123+E125+E126+E127+E128","v":0},{"$f":"F122-F124-F123+F125+F126+F127+F128","v":0},0,0,0,0,0,0,0,0]
[]
["Less: Debt Service",null,null,null,{"$f":"-$E$99","v":0},0,0,0,0,0,0,0,0,0]
["Net Cash Flow",null,null,null,{"$f":"E129-E131","v":0},0,0,0,0,0,0,0,0,0]
[]
["Cap Rate",null,null,null,{"$f":"IFERROR(E129/$E$101,0)","v":0},0,0,0,0,0,0,0,0,0]
["Cash on Cash Return (Equity Dividend Rate)",null,null,null,{"$f":"IFERROR(E132/$E$104,0)","v":0},{"$f":"IFERROR(F132/$E$104,0)","v":0},0,0,0,0,0,0,0,0]
[]
["Project Value",null,null,"Year 0","Year 1","Year 2","Year 3","Year 4","Year 5","Year 6","Year 7","Year 8","Year 9","Year 10"]
["Terminal Cap Rate, Gross Sales Price",null,null,null,{"$f":"D52","v":0},null,null,null,null,null,null,null,null,{"$f":"IFERROR(N129/E138,0)","v":0}]
["Net Sales = Price Less Sales Cost",null,null,null,{"$f":"D53","v":0},null,null,null,null,null,null,null,null,{"$f":"N138*(1-E139)","v":0}]
["Less Mortgage Balance",null,null,null,null,null,null,null,null,null,null,null,null,{"$f":"AA185","v":0}]
["Net Sales Proceeds",null,null,null,null,null,null,null,null,null,null,null,null,{"$f":"N139-N140","v":0}]
[]
[]
["IRR - Unleveraged (Project Cost)",null,null,"Year 0","Year 1","Year 2","Year 3","Year 4","Year 5","Year 6","Year 7","Year 8","Year 9","Year 10"]
["Total Investment",null,null,{"$f":"-E106","v":0}]
["Project NOI",null,null,null,{"$f":"E129","v":0},{"$f":"F129","v":0},0,0,0,0,0,0,0,0]
["Net Sales Price",null,null,null,null,null,null,null,null,null,null,null,null,{"$f":"N139","v":0}]
["Total",null,null,{"$f":"SUM(D145:D147)","v":0},{"$f":"SUM(E145:E147)","v":0},{"$f":"SUM(F145:F147)","v":0},0,0,0,0,0,0,0,0]
["IRR - Project Cost",null,null,null,null,null,null,null,null,null,null,null,null,{"$f":"IFERROR(IRR(D148:N148),0)","v":0}]
["NPV - Project Cost",null,null,null,null,null,null,null,null,null,null,null,null,{"$f":"NPV(L6,D148:N148)","v":0}]
[]
["IRR - Leveraged (Before Tax)",null,null,"Year 0","Year 1","Year 2","Year 3","Year 4","Year 5","Year 6","Year 7","Year 8","Year 9","Year 10"]
["Original Investment (Equity)",null,null,{"$f":"-E104","v":0}]
["Project Cash Flow",null,null,null,{"$f":"E132","v":0},0,0,0,0,0,0,0,0,0]
["Net Sales Proceeds",null,null,null,null,null,null,null,null,null,null,null,null,{"$f":"N141","v":0}]
["Total",null,null,{"$f":"SUM(D153:D155)","v":0},0,0,0,0,0,0,0,0,0,0]
["IRR - Equity",null,null,null,null,null,null,null,null,null,null,null,null,{"$f":"IFERROR(IRR(D156:N156),0)","v":0}]
["NPV - Equity",null,null,null,null,null,null,null,null,null,null,null,null,{"$f":"NPV(L7,D156:N156)","v":0}]
[]
["IRR - Public Participation",null,null,"Year 0","Year 1","Year 2","Year 3","Year 4","Year 5","Year 6","Year 7","Year 8","Year 9","Year 10"]
["Original Investment (Equity)",null,null,{"$f":"-(E108+(E93*E111))","v":0}]
["Mezzanine Financing",null,null,null,{"$f":"-$E$96","v":0},0,0,0,0,0,0,0,0,0]
["Cash Throw Off",null,null,null,{"$f":"$E$109","v":0},0,0,0,0,0,0,0,0,0]
["Sale Proceeds",null,null,null,null,null,null,null,null,null,null,null,null,{"$f":"N155*E110","v":0}]
["Loan Balance",null,null,null,null,null,null,null,null,null,null,null,null,{"$f":"V185*E111","v":0}]
["Total",null,null,{"$f":"SUM(D161:D165)","v":0},{"$f":"SUM(E161:E165)","v":0},0,0,0,0,0,0,0,0,0]
["IRR - Equity",null,null,null,null,null,null,null,null,null,null,null,null,{"$f":"IFERROR(IRR(D166:N166),0)","v":0}]
["NPV - Equity",null,null,null,null,null,null,null,null,null,null,null,null,{"$f":"NPV(E112,D166:N166)","v":0}]
[]
[]
[]
["DEBT SERVICE MORTIZATION TABLES"]
["Primary Debt Amortization",null,null,null,null,"Low Interest Loan",null,null,null,null,"Total Debt Amortization",null,null,null,null,"Annual Debt Service Summary - Primary Debt",null,null,null,null,"Annual Debt Service Summary - Secondary Debt",null,null,null,null,"Annual Debt Service Summary - Total Debt"]
[]
["Period","Balance","Payment","Interest","Principal","Period","Balance","Payment","Interest","Principal","Period","Balance","Payment","Interest","Principal","Year","Balance","Payment","Interest","Principal","Year","Balance","Payment","Interest","Principal","Year","Balance","Payment","Interest","Principal"]
[0,{"$f":"E87","v":0},null,null,null,0,{"$f":"E93","v":0},null,null,null,0,{"$f":"B176+G176","v":0},null,null,null,1,{"$f":"B188","v":0},{"$f":"SUM(C177:C188)","v":0},{"$f":"SUM(D177:D188)","v":0},{"$f":"SUM(E177:E188)","v":0},1,{"$f":"G188","v":0},{"$f":"SUM(H177:H188)","v":0},{"$f":"SUM(I177:I188)","v":0},{"$f":"SUM(J177:J188)","v":0},1,{"$f":"Q176+V176","v":0},{"$f":"R176+W176","v":0},{"$f":"S176+X176","v":0},{"$f":"T176+Y176","v":0}]
[1,{"$f":"B176-E177","v":0},{"$f":"-$E$90/12","v":0},{"$f":"B176*$E$88/12","v":0},{"$f":"C177-D177","v":0},1,{"$f":"G176-J177","v":0},{"$f":"-$E$96/12","v":0},{"$f":"G176*$E$94/12","v":0},{"$f":"H177-I177","v":0},1,{"$f":"G177+B177","v":0},0,0,0,2,{"$f":"B200","v":0},{"$f":"SUM(C189:C200)","v":0},{"$f":"SUM(D189:D200)","v":0},{"$f":"SUM(E189:E200)","v":0},2,{"$f":"G200","v":0},{"$f":"SUM(H189:H200)","v":0},{"$f":"SUM(I189:I200)","v":0},{"$f":"SUM(J189:J200)","v":0},2,{"$f":"Q177+V177","v":0},0,0,0]
[{"$f":"A177+1","v":2},0,0,{"$f":"B177*$E$88/12","v":0},0,{"$f":"F177+1","v":2},0,0,0,0,{"$f":"K177+1","v":2},0,0,0,0,3,{"$f":"B212","v":0},{"$f":"SUM(C201:C212)","v":0},{"$f":"SUM(D201:D212)","v":0},{"$f":"SUM(E201:E212)","v":0},3,{"$f":"G212","v":0},{"$f":"SUM(H201:H212)","v":0},{"$f":"SUM(I201:I212)","v":0},{"$f":"SUM(J201:J212)","v":0},3,0,0,0,0]
[3,0,0,{"$f":"B178*$E$88/12","v":0},0,3,0,0,0,0,3,0,0,0,0,4,{"$f":"B224","v":0},{"$f":"SUM(C213:C224)","v":0},{"$f":"SUM(D213:D224)","v":0},{"$f":"SUM(E213:E224)","v":0},4,{"$f":"G224","v":0},{"$f":"SUM(H213:H224)","v":0},{"$f":"SUM(I213:I224)","v":0},{"$f":"SUM(J213:J224)","v":0},4,0,0,0,0]
[4,0,0,{"$f":"B179*$E$88/12","v":0},0,4,0,0,0,0,4,0,0,0,0,5,{"$f":"B236","v":0},{"$f":"SUM(C225:C236)","v":0},{"$f":"SUM(D225:D236)","v":0},{"$f":"SUM(E225:E236)","v":0},5,{"$f":"G236","v":0},{"$f":"SUM(H225:H236)","v":0},{"$f":"SUM(I225:I236)","v":0},{"$f":"SUM(J225:J236)","v":0},5,0,0,0,0]
[5,0,0,0,0,5,0,0,0,0,5,0,0,0,0,6,{"$f":"B248","v":0},{"$f":"SUM(C237:C248)","v":0},{"$f":"SUM(D237:D248)","v":0},{"$f":"SUM(E237:E248)","v":0},6,{"$f":"G248","v":0},{"$f":"SUM(H237:H248)","v":0},{"$f":"SUM(I237:I248)","v":0},{"$f":"SUM(J237:J248)","v":0},6,0,0,0,0]
[6,0,0,0,0,6,0,0,0,0,6,0,0,0,0,7,{"$f":"B260","v":0},{"$f":"SUM(C249:C260)","v":0},{"$f":"SUM(D249:D260)","v":0},{"$f":"SUM(E249:E260)","v":0},7,{"$f":"G260","v":0},{"$f":"SUM(H249:H260)","v":0},{"$f":"SUM(I249:I260)","v":0},{"$f":"SUM(J249:J260)","v":0},7,0,0,0,0]
[7,0,0,0,0,7,0,0,0,0,7,0,0,0,0,8,{"$f":"B272","v":0},{"$f":"SUM(C261:C272)","v":0},{"$f":"SUM(D261:D272)","v":0},{"$f":"SUM(E261:E272)","v":0},8,{"$f":"G272","v":0},{"$f":"SUM(H261:H272)","v":0},{"$f":"SUM(I261:I272)","v":0},{"$f":"SUM(J261:J272)","v":0},8,0,0,0,0]
[8,0,0,0,0,8,0,0,0,0,8,0,0,0,0,9,{"$f":"B284","v":0},{"$f":"SUM(C273:C284)","v":0},{"$f":"SUM(D273:D284)","v":0},{"$f":"SUM(E273:E284)","v":0},9,{"$f":"G284","v":0},{"$f":"SUM(H273:H284)","v":0},{"$f":"SUM(I273:I284)","v":0},{"$f":"SUM(J273:J284)","v":0},9,0,0,0,0]
[9,0,0,0,0,9,0,0,0,0,9,0,0,0,0,10,{"$f":"B296","v":0},{"$f":"SUM(C285:C296)","v":0},{"$f":"SUM(D285:D296)","v":0},{"$f":"SUM(E285:E296)","v":0},10,{"$f":"G296","v":0},{"$f":"SUM(H285:H296)","v":0},{"$f":"SUM(I285:I296)","v":0},{"$f":"SUM(J285:J296)","v":0},10,{"$f":"Q185+V185","v":0},{"$f":"R185+W185","v":0},{"$f":"S185+X185","v":0},{"$f":"T185+Y185","v":0}]
[10,0,0,0,0,10,0,0,0,0,10,0,0,0,0]
[11,0,0,0,0,11,0,0,0,0,11,0,0,0,0]
[12,0,0,0,0,12,0,0,0,0,12,0,0,0,0]
[13,0,0,0,0,13,0,0,0,0,13,0,0,0,0]
[14,0,0,0,0,14,0,0,0,0,14,0,0,0,0]
[15,0,0,0,0,15,0,0,0,0,15,0,0,0,0]
[16,0,0,0,0,16,0,0,0,0,16,0,0,0,0]
[17,0,0,0,0,17,0,0,0,0,17,0,0,0,0]
[18,0,0,0,0,18,0,0,0,0,18,0,0,0,0]
[19,0,0,0,0,19,0,0,0,0,19,0,0,0,0]
[20,0,0,0,0,20,0,0,0,0,20,0,0,0,0]
[21,0,0,0,0,21,0,0,0,0,21,0,0,0,0]
[22,0,0,0,0,22,0,0,0,0,22,0,0,0,0]
[23,0,0,0,0,23,0,0,0,0,23,0,0,0,0]
[24,0,0,0,0,24,0,0,0,0,24,0,0,0,0]
[25,0,0,0,0,25,0,0,0,0,25,0,0,0,0]
[26,0,0,0,0,26,0,0,0,0,26,0,0,0,0]
[27,0,0,0,0,27,0,0,0,0,27,0,0,0,0]
[28,0,0,0,0,28,0,0,0,0,28,0,0,0,0]
[29,0,0,0,0,29,0,0,0,0,29,0,0,0,0]
[30,0,0,0,0,30,0,0,0,0,30,0,0,0,0]
[31,0,0,0,0,31,0,0,0,0,31,0,0,0,0]
[32,0,0,0,0,32,0,0,0,0,32,0,0,0,0]
[33,0,0,0,0,33,0,0,0,0,33,0,0,0,0]
[34,0,0,0,0,34,0,0,0,0,34,0,0,0,0]
[35,0,0,0,0,35,0,0,0,0,35,0,0,0,0]
[36,0,0,0,0,36,0,0,0,0,36,0,0,0,0]
[37,0,0,0,0,37,0,0,0,0,37,0,0,0,0]
[38,0,0,0,0,38,0,0,0,0,38,0,0,0,0]
[39,0,0,0,0,39,0,0,0,0,39,0,0,0,0]
[40,0,0,0,0,40,0,0,0,0,40,0,0,0,0]
[41,0,0,0,0,41,0,0,0,0,41,0,0,0,0]
[42,0,0,0,0,42,0,0,0,0,42,0,0,0,0]
[43,0,0,0,0,43,0,0,0,0,43,0,0,0,0]
[44,0,0,0,0,44,0,0,0,0,44,0,0,0,0]
[45,0,0,0,0,45,0,0,0,0,45,0,0,0,0]
[46,0,0,0,0,46,0,0,0,0,46,0,0,0,0]
[47,0,0,0,0,47,0,0,0,0,47,0,0,0,0]
[48,0,0,0,0,48,0,0,0,0,48,0,0,0,0]
[49,0,0,0,0,49,0,0,0,0,49,0,0,0,0]
[50,0,0,0,0,50,0,0,0,0,50,0,0,0,0]
[51,0,0,0,0,51,0,0,0,0,51,0,0,0,0]
[52,0,0,0,0,52,0,0,0,0,52,0,0,0,0]
[53,0,0,0,0,53,0,0,0,0,53,0,0,0,0]
[54,0,0,0,0,54,0,0,0,0,54,0,0,0,0]
[55,0,0,0,0,55,0,0,0,0,55,0,0,0,0]
[56,0,0,0,0,56,0,0,0,0,56,0,0,0,0]
[57,0,0,0,0,57,0,0,0,0,57,0,0,0,0]
[58,0,0,0,0,58,0,0,0,0,58,0,0,0,0]
[59,0,0,0,0,59,0,0,0,0,59,0,0,0,0]
[60,0,0,0,0,60,0,0,0,0,60,0,0,0,0]
[61,0,0,0,0,61,0,0,0,0,61,0,0,0,0]
[62,0,0,0,0,62,0,0,0,0,62,0,0,0,0]
[63,0,0,0,0,63,0,0,0,0,63,0,0,0,0]
[64,0,0,0,0,64,0,0,0,0,64,0,0,0,{"$f":"J240+E240","v":0}]
[65,{"$f":"B240-E241","v":0},{"$f":"-$E$90/12","v":0},0,{"$f":"C241-D241","v":0},65,{"$f":"G240-J241","v":0},{"$f":"-$E$96/12","v":0},{"$f":"G240*$E$94/12","v":0},{"$f":"H241-I241","v":0},65,{"$f":"G241+B241","v":0},0,0,0]
[{"$f":"A241+1","v":66},0,0,0,0,{"$f":"F241+1","v":66},0,0,0,0,{"$f":"K241+1","v":66},0,0,0,0]
[67,0,0,0,0,67,0,0,0,0,67,0,0,0,0]
[68,0,0,{"$f":"B243*$E$88/12","v":0},0,68,0,0,0,0,68,0,0,0,0]
[69,0,0,0,0,69,0,0,0,0,69,0,0,0,0]
[70,0,0,0,0,70,0,0,0,0,70,0,0,0,0]
[71,0,0,0,0,71,0,0,0,0,71,0,0,0,0]
[72,0,0,0,0,72,0,0,0,0,72,0,0,0,0]
[73,0,0,0,0,73,0,0,0,0,73,0,0,0,0]
[74,0,0,0,0,74,0,0,0,0,74,0,0,0,0]
[75,0,0,0,0,75,0,0,0,0,75,0,0,0,0]
[76,0,0,0,0,76,0,0,0,0,76,0,0,0,0]
[77,0,0,0,0,77,0,0,0,0,77,0,0,0,0]
[78,0,0,0,0,78,0,0,0,0,78,0,0,0,0]
[79,0,0,0,0,79,0,0,0,0,79,0,0,0,0]
[80,0,0,0,0,80,0,0,0,0,80,0,0,0,0]
[81,0,0,0,0,81,0,0,0,0,81,0,0,0,0]
[82,0,0,0,0,82,0,0,0,0,82,0,0,0,0]
[83,0,0,0,0,83,0,0,0,0,83,0,0,0,0]
[84,0,0,0,0,84,0,0,0,0,84,0,0,0,0]
[85,0,0,0,0,85,0,0,0,0,85,0,0,0,0]
[86,0,0,0,0,86,0,0,0,0,86,0,0,0,0]
[87,0,0,0,0,87,0,0,0,0,87,0,0,0,0]
[88,0,0,0,0,88,0,0,0,0,88,0,0,0,0]
[89,0,0,0,0,89,0,0,0,0,89,0,0,0,0]
[90,0,0,0,0,90,0,0,0,0,90,0,0,0,0]
[91,0,0,0,0,91,0,0,0,0,91,0,0,0,0]
[92,0,0,0,0,92,0,0,0,0,92,0,0,0,0]
[93,0,0,0,0,93,0,0,0,0,93,0,0,0,0]
[94,0,0,0,0,94,0,0,0,0,94,0,0,0,0]
[95,0,0,0,0,95,0,0,0,0,95,0,0,0,0]
[96,0,0,0,0,96,0,0,0,0,96,0,0,0,0]
[97,0,0,0,0,97,0,0,0,0,97,0,0,0,0]
[98,0,0,0,0,98,0,0,0,0,98,0,0,0,0]
[99,0,0,0,0,99,0,0,0,0,99,0,0,0,0]
[100,0,0,0,0,100,0,0,0,0,100,0,0,0,0]
[101,0,0,0,0,101,0,0,0,0,101,0,0,0,0]
[102,0,0,0,0,102,0,0,0,0,102,0,0,0,0]
[103,0,0,0,0,103,0,0,0,0,103,0,0,0,0]
[104,0,0,0,0,104,0,0,0,0,104,0,0,0,0]
[105,0,0,0,0,105,0,0,0,0,105,0,0,0,0]
[106,0,0,0,0,106,0,0,0,0,106,0,0,0,0]
[107,0,0,0,0,107,0,0,0,0,107,0,0,0,0]
[108,0,0,0,0,108,0,0,0,0,108,0,0,0,0]
[109,0,0,0,0,109,0,0,0,0,109,0,0,0,0]
[110,0,0,0,0,110,0,0,0,0,110,0,0,0,0]
[111,0,0,0,0,111,0,0,0,0,111,0,0,0,0]
[112,0,0,0,0,112,0,0,0,0,112,0,0,0,0]
[113,0,0,0,0,113,0,0,0,0,113,0,0,0,0]
[114,0,0,0,0,114,0,0,0,0,114,0,0,0,0]
[115,0,0,0,0,115,0,0,0,0,115,0,0,0,0]
[116,0,0,0,0,116,0,0,0,0,116,0,0,0,0]
[117,0,0,0,0,117,0,0,0,0,117,0,0,0,0]
[118,0,0,0,0,118,0,0,0,0,118,0,0,0,0]
[119,0,0,0,0,119,0,0,0,0,119,0,0,0,0]
[120,0,0,0,0,120,0,0,0,0,120,0,0,0,0]
[121,0,0,0,0,121,0,0,0,0,121,0,0,0,0]
[122,0,0,0,0,122,0,0,0,0,122,0,0,0,0]
[123,0,0,0,0,123,0,0,0,0,123,0,0,0,0]
[124,0,0,0,0,124,0,0,0,0,124,0,0,0,0]
[125,0,0,0,0,125,0,0,0,0,125,0,0,0,0]
[126,0,0,0,0,126,0,0,0,0,126,0,0,0,0]
[127,0,0,0,0,127,0,0,0,0,127,0,0,0,0]
[128,0,0,0,0,128,0,0,0,0,128,0,0,0,0]
[129,{"$f":"B304-E305","v":0},{"$f":"-$E$90/12","v":0},0,{"$f":"C305-D305","v":0},129,{"$f":"G304-J305","v":0},{"$f":"-$E$96/12","v":0},{"$f":"G304*$E$94/12","v":0},{"$f":"H305-I305","v":0},129,{"$f":"G305+B305","v":0},0,0,0]
[{"$f":"A305+1","v":130},0,0,0,0,{"$f":"F305+1","v":130},0,0,0,0,{"$f":"K305+1","v":130},0,0,0,0]
[131,0,0,0,0,131,0,0,0,0,131,0,0,0,0]
[132,0,0,{"$f":"B307*$E$88/12","v":0},0,132,0,0,0,0,132,0,0,0,0]
[133,0,0,0,0,133,0,0,0,0,133,0,0,0,0]
[134,0,0,0,0,134,0,0,0,0,134,0,0,0,0]
[135,0,0,0,0,135,0,0,0,0,135,0,0,0,0]
[136,0,0,0,0,136,0,0,0,0,136,0,0,0,0]
[137,0,0,0,0,137,0,0,0,0,137,0,0,0,0]
[138,0,0,0,0,138,0,0,0,0,138,0,0,0,0]
[139,0,0,0,0,139,0,0,0,0,139,0,0,0,0]
[140,0,0,0,0,140,0,0,0,0,140,0,0,0,0]
[141,0,0,0,0,141,0,0,0,0,141,0,0,0,0]
[142,0,0,0,0,142,0,0,0,0,142,0,0,0,0]
[143,0,0,0,0,143,0,0,0,0,143,0,0,0,0]
[144,0,0,0,0,144,0,0,0,0,144,0,0,0,0]
[145,0,0,0,0,145,0,0,0,0,145,0,0,0,0]
[146,0,0,0,0,146,0,0,0,0,146,0,0,0,0]
[147,0,0,0,0,147,0,0,0,0,147,0,0,0,0]
[148,0,0,0,0,148,0,0,0,0,148,0,0,0,0]
[149,0,0,0,0,149,0,0,0,0,149,0,0,0,0]
[150,0,0,0,0,150,0,0,0,0,150,0,0,0,0]
[151,0,0,0,0,151,0,0,0,0,151,0,0,0,0]
[152,0,0,0,0,152,0,0,0,0,152,0,0,0,0]
[153,0,0,0,0,153,0,0,0,0,153,0,0,0,0]
[154,0,0,0,0,154,0,0,0,0,154,0,0,0,0]
[155,0,0,0,0,155,0,0,0,0,155,0,0,0,0]
[156,0,0,0,0,156,0,0,0,0,156,0,0,0,0]
[157,0,0,0,0,157,0,0,0,0,157,0,0,0,0]
[158,0,0,0,0,158,0,0,0,0,158,0,0,0,0]
[159,0,0,0,0,159,0,0,0,0,159,0,0,0,0]
[160,0,0,0,0,160,0,0,0,0,160,0,0,0,0]
[161,0,0,0,0,161,0,0,0,0,161,0,0,0,0]
[162,0,0,0,0,162,0,0,0,0,162,0,0,0,0]
[163,0,0,0,0,163,0,0,0,0,163,0,0,0,0]
[164,0,0,0,0,164,0,0,0,0,164,0,0,0,0]
[165,0,0,0,0,165,0,0,0,0,165,0,0,0,0]
[166,0,0,0,0,166,0,0,0,0,166,0,0,0,0]
[167,0,0,0,0,167,0,0,0,0,167,0,0,0,0]
[168,0,0,0,0,168,0,0,0,0,168,0,0,0,0]
[169,0,0,0,0,169,0,0,0,0,169,0,0,0,0]
[170,0,0,0,0,170,0,0,0,0,170,0,0,0,0]
[171,0,0,0,0,171,0,0,0,0,171,0,0,0,0]
[172,0,0,0,0,172,0,0,0,0,172,0,0,0,0]
[173,0,0,0,0,173,0,0,0,0,173,0,0,0,0]
[174,0,0,0,0,174,0,0,0,0,174,0,0,0,0]
[175,0,0,0,0,175,0,0,0,0,175,0,0,0,0]
[176,0,0,0,0,176,0,0,0,0,176,0,0,0,0]
[177,0,0,0,0,177,0,0,0,0,177,0,0,0,0]
[178,0,0,0,0,178,0,0,0,0,178,0,0,0,0]
[179,0,0,0,0,179,0,0,0,0,179,0,0,0,0]
[180,0,0,0,0,180,0,0,0,0,180,0,0,0,0]
[181,0,0,0,0,181,0,0,0,0,181,0,0,0,0]
[182,0,0,0,0,182,0,0,0,0,182,0,0,0,0]
[183,0,0,0,0,183,0,0,0,0,183,0,0,0,0]
[184,0,0,0,0,184,0,0,0,0,184,0,0,0,0]
[185,0,0,0,0,185,0,0,0,0,185,0,0,0,0]
[186,0,0,0,0,186,0,0,0,0,186,0,0,0,0]
[187,0,0,0,0,187,0,0,0,0,187,0,0,0,0]
[188,0,0,0,0,188,0,0,0,0,188,0,0,0,0]
[189,0,0,0,0,189,0,0,0,0,189,0,0,0,0]
[190,0,0,0,0,190,0,0,0,0,190,0,0,0,0]
[191,0,0,0,0,191,0,0,0,0,191,0,0,0,0]
[192,0,0,0,0,192,0,0,0,0,192,0,0,0,{"$f":"J368+E368","v":0}]
[193,{"$f":"B368-E369","v":0},{"$f":"-$E$90/12","v":0},0,{"$f":"C369-D369","v":0},193,{"$f":"G368-J369","v":0},{"$f":"-$E$96/12","v":0},{"$f":"G368*$E$94/12","v":0},{"$f":"H369-I369","v":0},193,{"$f":"G369+B369","v":0},0,0,0]
[{"$f":"A369+1","v":194},0,0,0,0,{"$f":"F369+1","v":194},0,0,0,0,{"$f":"K369+1","v":194},0,0,0,0]
[195,0,0,0,0,195,0,0,0,0,195,0,0,0,0]
[196,0,0,{"$f":"B371*$E$88/12","v":0},0,196,0,0,0,0,196,0,0,0,0]
[197,0,0,0,0,197,0,0,0,0,197,0,0,0,0]
[198,0,0,0,0,198,0,0,0,0,198,0,0,0,0]
[199,0,0,0,0,199,0,0,0,0,199,0,0,0,0]
[200,0,0,0,0,200,0,0,0,0,200,0,0,0,0]
[201,0,0,0,0,201,0,0,0,0,201,0,0,0,0]
[202,0,0,0,0,202,0,0,0,0,202,0,0,0,0]
[203,0,0,0,0,203,0,0,0,0,203,0,0,0,0]
[204,0,0,0,0,204,0,0,0,0,204,0,0,0,0]
[205,0,0,0,0,205,0,0,0,0,205,0,0,0,0]
[206,0,0,0,0,206,0,0,0,0,206,0,0,0,0]
[207,0,0,0,0,207,0,0,0,0,207,0,0,0,0]
[208,0,0,0,0,208,0,0,0,0,208,0,0,0,0]
[209,0,0,0,0,209,0,0,0,0,209,0,0,0,0]
[210,0,0,0,0,210,0,0,0,0,210,0,0,0,0]
[211,0,0,0,0,211,0,0,0,0,211,0,0,0,0]
[212,0,0,0,0,212,0,0,0,0,212,0,0,0,0]
[213,0,0,0,0,213,0,0,0,0,213,0,0,0,0]
[214,0,0,0,0,214,0,0,0,0,214,0,0,0,0]
[215,0,0,0,0,215,0,0,0,0,215,0,0,0,0]
[216,0,0,0,0,216,0,0,0,0,216,0,0,0,0]
[217,0,0,0,0,217,0,0,0,0,217,0,0,0,0]
[218,0,0,0,0,218,0,0,0,0,218,0,0,0,0]
[219,0,0,0,0,219,0,0,0,0,219,0,0,0,0]
[220,0,0,0,0,220,0,0,0,0,220,0,0,0,0]
[221,0,0,0,0,221,0,0,0,0,221,0,0,0,0]
[222,0,0,0,0,222,0,0,0,0,222,0,0,0,0]
[223,0,0,0,0,223,0,0,0,0,223,0,0,0,0]
[224,0,0,0,0,224,0,0,0,0,224,0,0,0,0]
[225,0,0,0,0,225,0,0,0,0,225,0,0,0,0]
[226,0,0,0,0,226,0,0,0,0,226,0,0,0,0]
[227,0,0,0,0,227,0,0,0,0,227,0,0,0,0]
[228,0,0,0,0,228,0,0,0,0,228,0,0,0,0]
[229,0,0,0,0,229,0,0,0,0,229,0,0,0,0]
[230,0,0,0,0,230,0,0,0,0,230,0,0,0,0]
[231,0,0,0,0,231,0,0,0,0,231,0,0,0,0]
[232,0,0,0,0,232,0,0,0,0,232,0,0,0,0]
[233,0,0,0,0,233,0,0,0,0,233,0,0,0,0]
[234,0,0,0,0,234,0,0,0,0,234,0,0,0,0]
[235,0,0,0,0,235,0,0,0,0,235,0,0,0,0]
[236,0,0,0,0,236,0,0,0,0,236,0,0,0,0]
[237,0,0,0,0,237,0,0,0,0,237,0,0,0,0]
[238,0,0,0,0,238,0,0,0,0,238,0,0,0,0]
[239,0,0,0,0,239,0,0,0,0,239,0,0,0,0]
[240,0,0,0,0,240,0,0,0,0,240,0,0,0,0]
[241,0,0,0,0,241,0,0,0,0,241,0,0,0,0]
[242,0,0,0,0,242,0,0,0,0,242,0,0,0,0]
[243,0,0,0,0,243,0,0,0,0,243,0,0,0,0]
[244,0,0,0,0,244,0,0,0,0,244,0,0,0,0]
[245,0,0,0,0,245,0,0,0,0,245,0,0,0,0]
[246,0,0,0,0,246,0,0,0,0,246,0,0,0,0]
[247,0,0,0,0,247,0,0,0,0,247,0,0,0,0]
[248,0,0,0,0,248,0,0,0,0,248,0,0,0,0]
[249,0,0,0,0,249,0,0,0,0,249,0,0,0,0]
[250,0,0,0,0,250,0,0,0,0,250,0,0,0,0]
[251,0,0,0,0,251,0,0,0,0,251,0,0,0,0]
[252,0,0,0,0,252,0,0,0,0,252,0,0,0,0]
[253,0,0,0,0,253,0,0,0,0,253,0,0,0,0]
[254,0,0,0,0,254,0,0,0,0,254,0,0,0,0]
[255,0,0,0,0,255,0,0,0,0,255,0,0,0,0]
[256,0,0,0,0,256,0,0,0,0,256,0,0,0,0]
[257,{"$f":"B432-E433","v":0},{"$f":"-$E$90/12","v":0},0,{"$f":"C433-D433","v":0},257,{"$f":"G432-J433","v":0},{"$f":"-$E$96/12","v":0},{"$f":"G432*$E$94/12","v":0},{"$f":"H433-I433","v":0},257,{"$f":"G433+B433","v":0},0,0,0]
[{"$f":"A433+1","v":258},0,0,0,0,{"$f":"F433+1","v":258},0,0,0,0,{"$f":"K433+1","v":258},0,0,0,0]
[259,0,0,0,0,259,0,0,0,0,259,0,0,0,0]
[260,0,0,{"$f":"B435*$E$88/12","v":0},0,260,0,0,0,0,260,0,0,0,0]
[261,0,0,0,0,261,0,0,0,0,261,0,0,0,0]
[262,0,0,0,0,262,0,0,0,0,262,0,0,0,0]
[263,0,0,0,0,263,0,0,0,0,263,0,0,0,0]
[264,0,0,0,0,264,0,0,0,0,264,0,0,0,0]
[265,0,0,0,0,265,0,0,0,0,265,0,0,0,0]
[266,0,0,0,0,266,0,0,0,0,266,0,0,0,0]
[267,0,0,0,0,267,0,0,0,0,267,0,0,0,0]
[268,0,0,0,0,268,0,0,0,0,268,0,0,0,0]
[269,0,0,0,0,269,0,0,0,0,269,0,0,0,0]
[270,0,0,0,0,270,0,0,0,0,270,0,0,0,0]
[271,0,0,0,0,271,0,0,0,0,271,0,0,0,0]
[272,0,0,0,0,272,0,0,0,0,272,0,0,0,0]
[273,0,0,0,0,273,0,0,0,0,273,0,0,0,0]
[274,0,0,0,0,274,0,0,0,0,274,0,0,0,0]
[275,0,0,0,0,275,0,0,0,0,275,0,0,0,0]
[276,0,0,0,0,276,0,0,0,0,276,0,0,0,0]
[277,0,0,0,0,277,0,0,0,0,277,0,0,0,0]
[278,0,0,0,0,278,0,0,0,0,278,0,0,0,0]
[279,0,0,0,0,279,0,0,0,0,279,0,0,0,0]
[280,0,0,0,0,280,0,0,0,0,280,0,0,0,0]
[281,0,0,0,0,281,0,0,0,0,281,0,0,0,0]
[282,0,0,0,0,282,0,0,0,0,282,0,0,0,0]
[283,0,0,0,0,283,0,0,0,0,283,0,0,0,0]
[284,0,0,0,0,284,0,0,0,0,284,0,0,0,0]
[285,0,0,0,0,285,0,0,0,0,285,0,0,0,0]
[286,0,0,0,0,286,0,0,0,0,286,0,0,0,0]
[287,0,0,0,0,287,0,0,0,0,287,0,0,0,0]
[288,0,0,0,0,288,0,0,0,0,288,0,0,0,0]
[289,0,0,0,0,289,0,0,0,0,289,0,0,0,0]
[290,0,0,0,0,290,0,0,0,0,290,0,0,0,0]
[291,0,0,0,0,291,0,0,0,0,291,0,0,0,0]
[292,0,0,0,0,292,0,0,0,0,292,0,0,0,0]
[293,0,0,0,0,293,0,0,0,0,293,0,0,0,0]
[294,0,0,0,0,294,0,0,0,0,294,0,0,0,0]
[295,0,0,0,0,295,0,0,0,0,295,0,0,0,0]
[296,0,0,0,0,296,0,0,0,0,296,0,0,0,0]
[297,0,0,0,0,297,0,0,0,0,297,0,0,0,0]
[298,0,0,0,0,298,0,0,0,0,298,0,0,0,0]
[299,0,0,0,0,299,0,0,0,0,299,0,0,0,0]
[300,0,0,0,0,300,0,0,0,0,300,0,0,0,0]
[301,0,0,0,0,301,0,0,0,0,301,0,0,0,0]
[302,0,0,0,0,302,0,0,0,0,302,0,0,0,0]
[303,0,0,0,0,303,0,0,0,0,303,0,0,0,0]
[304,0,0,0,0,304,0,0,0,0,304,0,0,0,0]
[305,0,0,0,0,305,0,0,0,0,305,0,0,0,0]
[306,0,0,0,0,306,0,0,0,0,306,0,0,0,0]
[307,0,0,0,0,307,0,0,0,0,307,0,0,0,0]
[308,0,0,0,0,308,0,0,0,0,308,0,0,0,0]
[309,0,0,0,0,309,0,0,0,0,309,0,0,0,0]
[310,0,0,0,0,310,0,0,0,0,310,0,0,0,0]
[311,0,0,0,0,311,0,0,0,0,311,0,0,0,0]
[312,0,0,0,0,312,0,0,0,0,312,0,0,0,0]
[313,0,0,0,0,313,0,0,0,0,313,0,0,0,0]
[314,0,0,0,0,314,0,0,0,0,314,0,0,0,0]
[315,0,0,0,0,315,0,0,0,0,315,0,0,0,0]
[316,0,0,0,0,316,0,0,0,0,316,0,0,0,0]
[317,0,0,0,0,317,0,0,0,0,317,0,0,0,0]
[318,0,0,0,0,318,0,0,0,0,318,0,0,0,0]
[319,0,0,0,0,319,0,0,0,0,319,0,0,0,0]
[320,0,0,0,0,320,0,0,0,0,320,0,0,0,{"$f":"J496+E496","v":0}]
[321,{"$f":"B496-E497","v":0},{"$f":"-$E$90/12","v":0},0,{"$f":"C497-D497","v":0},321,{"$f":"G496-J497","v":0},{"$f":"-$E$96/12","v":0},{"$f":"G496*$E$94/12","v":0},{"$f":"H497-I497","v":0},321,{"$f":"G497+B497","v":0},0,0,0]
[{"$f":"A497+1","v":322},0,0,0,0,{"$f":"F497+1","v":322},0,0,0,0,{"$f":"K497+1","v":322},0,0,0,0]
[323,0,0,0,0,323,0,0,0,0,323,0,0,0,0]
[324,0,0,{"$f":"B499*$E$88/12","v":0},0,324,0,0,0,0,324,0,0,0,0]
[325,0,0,0,0,325,0,0,0,0,325,0,0,0,0]
[326,0,0,0,0,326,0,0,0,0,326,0,0,0,0]
[327,0,0,0,0,327,0,0,0,0,327,0,0,0,0]
[328,0,0,0,0,328,0,0,0,0,328,0,0,0,0]
[329,0,0,0,0,329,0,0,0,0,329,0,0,0,0]
[330,0,0,0,0,330,0,0,0,0,330,0,0,0,0]
[331,0,0,0,0,331,0,0,0,0,331,0,0,0,0]
[332,0,0,0,0,332,0,0,0,0,332,0,0,0,0]
[333,0,0,0,0,333,0,0,0,0,333,0,0,0,0]
[334,0,0,0,0,334,0,0,0,0,334,0,0,0,0]
[335,0,0,0,0,335,0,0,0,0,335,0,0,0,0]
[336,0,0,0,0,336,0,0,0,0,336,0,0,0,0]
[337,0,0,0,0,337,0,0,0,0,337,0,0,0,0]
[338,0,0,0,0,338,0,0,0,0,338,0,0,0,0]
[339,0,0,0,0,339,0,0,0,0,339,0,0,0,0]
[340,0,0,0,0,340,0,0,0,0,340,0,0,0,0]
[341,0,0,0,0,341,0,0,0,0,341,0,0,0,0]
[342,0,0,0,0,342,0,0,0,0,342,0,0,0,0]
[343,0,0,0,0,343,0,0,0,0,343,0,0,0,0]
[344,0,0,0,0,344,0,0,0,0,344,0,0,0,0]
[345,0,0,0,0,345,0,0,0,0,345,0,0,0,0]
[346,0,0,0,0,346,0,0,0,0,346,0,0,0,0]
[347,0,0,0,0,347,0,0,0,0,347,0,0,0,0]
[348,0,0,0,0,348,0,0,0,0,348,0,0,0,0]
[349,0,0,0,0,349,0,0,0,0,349,0,0,0,0]
[350,0,0,0,0,350,0,0,0,0,350,0,0,0,0]
[351,0,0,0,0,351,0,0,0,0,351,0,0,0,0]
[352,0,0,0,0,352,0,0,0,0,352,0,0,0,0]
[353,0,0,0,0,353,0,0,0,0,353,0,0,0,0]
[354,0,0,0,0,354,0,0,0,0,354,0,0,0,0]
[355,0,0,0,0,355,0,0,0,0,355,0,0,0,0]
[356,0,0,0,0,356,0,0,0,0,356,0,0,0,0]
[357,0,0,0,0,357,0,0,0,0,357,0,0,0,0]
[358,0,0,0,0,358,0,0,0,0,358,0,0,0,0]
[359,0,0,0,0,359,0,0,0,0,359,0,0,0,0]
[360,0,0,0,0,360,0,0,0,0,360,0,0,0,0]

{"sheet":"Mixed-Use Summary","index":25,"n_rows":511,"n_cols":29,"rows_kept":511,"cut":false,"hidden":true,"merged":[[20,15,20,16],[2,13,2,16],[2,9,2,10],[2,1,2,2],[2,3,2,4],[2,5,2,6],[2,7,2,8],[20,7,20,8],[20,5,20,6],[20,3,20,4],[20,1,20,2],[20,9,20,10],[2,11,2,12],[20,11,20,12]]}
[]
["Mixed-Use Performance Indicator"]
[null,"Residential (Rental)",null,"Office",null,"Retail",null," Accommodation",null,"Industrial",null,"Commercial Parking",null,"RENTAL SUMMARY",null,null,null,null,null,"Residential (Owner)"]
[null,"Target","Actual","Target","Actual","Target","Actual","Target","Actual","Target","Actual",null,null,"Target",null,"Actual","NPV",null,null,"Target","Actual","With Leveraging Tools"]
["Cash-on-Cash (After Year 3)",{"$f":"'Residential Rental'!L5","v":0.12},{"$f":"'Residential Rental'!M5","v":0},{"$f":"Office!L5","v":0.1},{"$f":"Office!M5","v":0},{"$f":"Retail!L5","v":0.1},{"$f":"Retail!M5","v":0},{"$f":"Hotel!L5","v":0.1},{"$f":"Hotel!M5","v":0},{"$f":"Industrial!L5","v":0.1},{"$f":"Industrial!M5","v":0},{"$f":"'Commercial Parking'!L5","v":0.1},{"$f":"'Commercial Parking'!M5","v":0},{"$f":"(B5*'Development Costs'!$F$41)+(D5*('Development Costs'!$F$43+'Development Costs'!$F$45+'Development Costs'!$F$46))+(F5*'Development Costs'!$F$42)+(H5*'Development Costs'!$F$47)+(J5*'Development Costs'!$F$44)+(L5*'Development Costs'!$F$48)","v":0.12},null,{"$f":"IFERROR(E108,0)","v":0},null,"Project Rate of Return",null,{"$f":"'Residential Owner'!B3","v":0.2},{"$f":"'Residential Owner'!B25","v":0.19735438905370878},{"$f":"'Residential Owner'!B43","v":0.19735438905370878}]
["IRR on Project Cost (Unleveraged Return)",{"$f":"'Residential Rental'!L6","v":0.12},{"$f":"'Residential Rental'!M6","v":0},{"$f":"Office!L6","v":0.1},{"$f":"Office!M6","v":0},{"$f":"Retail!L6","v":0.1},{"$f":"Retail!M6","v":0},{"$f":"Hotel!L6","v":0.1},{"$f":"Hotel!M6","v":0},{"$f":"Industrial!L6","v":0.1},{"$f":"Industrial!M6","v":0},{"$f":"'Commercial Parking'!L6","v":0.1},{"$f":"'Commercial Parking'!M6","v":0},{"$f":"(B6*'Development Costs'!$F$41)+(D6*('Development Costs'!$F$43+'Development Costs'!$F$45+'Development Costs'!$F$46))+(F6*'Development Costs'!$F$42)+(H6*'Development Costs'!$F$47)+(J6*'Development Costs'!$F$44)+(L6*'Development Costs'!$F$48)","v":0.12},null,{"$f":"IFERROR(L123,0)","v":0},{"$f":"IFERROR(L124,0)","v":0},"Return to Equity",null,{"$f":"'Residential Owner'!B4","v":0.75},{"$f":"'Residential Owner'!B29","v":0.98677194526854406},{"$f":"'Residential Owner'!B48","v":0.98677194526854406}]
["IRR on Investor Equity (Leveraged Return Before Tax)",{"$f":"'Residential Rental'!L7","v":0.25},{"$f":"'Residential Rental'!M7","v":0},{"$f":"Office!L7","v":0.25},{"$f":"Office!M7","v":0},{"$f":"Retail!L7","v":0.25},{"$f":"Retail!M7","v":0},{"$f":"Hotel!L7","v":0.25},{"$f":"Hotel!M7","v":0},{"$f":"Industrial!L7","v":0.25},{"$f":"Industrial!M7","v":0},{"$f":"'Commercial Parking'!L7","v":0.25},{"$f":"'Commercial Parking'!M7","v":0},{"$f":"(B7*'Development Costs'!$F$41)+(D7*('Development Costs'!$F$43+'Development Costs'!$F$45+'Development Costs'!$F$46))+(F7*'Development Costs'!$F$42)+(H7*'Development Costs'!$F$47)+(J7*'Development Costs'!$F$44)+(L7*'Development Costs'!$F$48)","v":0.25},null,{"$f":"IFERROR(L131,0)","v":0},{"$f":"IFERROR(L132,0)","v":0}]
["Debt Service Coverage Ratio (Year 3)",{"$f":"'Residential Rental'!L8","v":1.25},{"$f":"'Residential Rental'!M8","v":0},{"$f":"Office!L8","v":1.25},{"$f":"Office!M8","v":0},{"$f":"Retail!L8","v":1.25},{"$f":"Retail!M8","v":0},{"$f":"Hotel!L8","v":1.25},{"$f":"Hotel!M8","v":0},{"$f":"Industrial!L8","v":1.25},{"$f":"Industrial!M8","v":0},{"$f":"'Commercial Parking'!L8","v":1.25},{"$f":"'Commercial Parking'!M8","v":0},{"$f":"(B8*'Development Costs'!$F$41)+(D8*('Development Costs'!$F$43+'Development Costs'!$F$45+'Development Costs'!$F$46))+(F8*'Development Costs'!$F$42)+(H8*'Development Costs'!$F$47)+(J8*'Development Costs'!$F$44)+(L8*'Development Costs'!$F$48)","v":1.25},null,{"$f":"IFERROR(E102/E104,0)","v":0}]
["IRR on Public Participation",{"$f":"'Residential Rental'!L9","v":0.05},{"$f":"'Residential Rental'!M9","v":0},{"$f":"Office!L9","v":0.05},{"$f":"Office!M9","v":0},{"$f":"Retail!L9","v":0.05},{"$f":"Retail!M9","v":0},{"$f":"Hotel!L9","v":0.05},{"$f":"Hotel!M9","v":0},{"$f":"Industrial!L9","v":0.05},{"$f":"Industrial!M9","v":0},{"$f":"'Commercial Parking'!L9","v":0.05},{"$f":"'Commercial Parking'!M9","v":0},{"$f":"(B9*'Development Costs'!$F$41)+(D9*('Development Costs'!$F$43+'Development Costs'!$F$45+'Development Costs'!$F$46))+(F9*'Development Costs'!$F$42)+(H9*'Development Costs'!$F$47)+(J9*'Development Costs'!$F$44)+(L9*'Development Costs'!$F$48)","v":0.05},null,{"$f":"IFERROR(L141,0)","v":0},{"$f":"IFERROR(L142,0)","v":0}]
[]
[]
[]
["Public Leveraging Tools","Res. (Rental)","Office","Retail"," Accommodation","Industrial","Commercial Parking","Rental Summary","Res. (Owner)"]
["Tax Credits net to project",{"$f":"'Residential Rental'!F4","v":0},{"$f":"Office!F4","v":0},{"$f":"Retail!F4","v":0},{"$f":"Hotel!F4","v":0},{"$f":"Industrial!F4","v":0},{"$f":"'Commercial Parking'!F4","v":0},{"$f":"SUM(B14:G14)","v":0},{"$f":"'Residential Owner'!C7","v":0}]
["Fee Reductions",{"$f":"'Residential Rental'!F5","v":0},{"$f":"Office!F5","v":0},{"$f":"Retail!F5","v":0},{"$f":"Hotel!F5","v":0},{"$f":"Industrial!F5","v":0},{"$f":"'Commercial Parking'!F5","v":0},{"$f":"SUM(B15:G15)","v":0},{"$f":"'Residential Owner'!C8","v":0}]
["Grants",{"$f":"'Residential Rental'!F6","v":0},{"$f":"Office!F6","v":0},{"$f":"Retail!F6","v":0},{"$f":"Hotel!F6","v":0},{"$f":"Industrial!F6","v":0},{"$f":"'Commercial Parking'!F6","v":0},{"$f":"SUM(B16:G16)","v":0},{"$f":"'Residential Owner'!C9","v":0},"TOTAL"]
["Total Development Offsets (Contributions to Equity)",{"$f":"'Residential Rental'!F7","v":0},{"$f":"Office!F7","v":0},{"$f":"Retail!F7","v":0},{"$f":"Hotel!F7","v":0},{"$f":"Industrial!F7","v":0},{"$f":"'Commercial Parking'!F7","v":0},{"$f":"SUM(H14:H16)","v":0},{"$f":"SUM(I14:I16)","v":0},{"$f":"SUM(H17:I17)","v":0}]
["Net Development Costs",{"$f":"'Residential Rental'!F8","v":0},{"$f":"Office!F8","v":0},{"$f":"Retail!F8","v":0},{"$f":"Hotel!F8","v":0},{"$f":"Industrial!F8","v":0},{"$f":"'Commercial Parking'!F8","v":0},{"$f":"SUM(B18:G18)","v":0},{"$f":"'Residential Owner'!B40","v":1228207.7999999998},{"$f":"SUM(H18:I18)","v":1228207.7999999998}]
[]
[]
[null,"Residential (Rental)",null,"Office",null,"Retail",null,"Accommodation",null,"Industrial",null,"Commercial Parking",null,"Rental Summary",null,"Residential (Owner)"]
["Total Development Costs",null,{"$f":"'Residential Rental'!C57","v":0},null,{"$f":"Office!D56","v":0},null,{"$f":"Retail!D57","v":0},null,{"$f":"Hotel!C58","v":0},null,{"$f":"Industrial!C56","v":0},null,{"$f":"'Commercial Parking'!D57","v":0},{"$f":"SUM(C22,E22,G22,I22,K22,M22)","v":0},null,"Total Development Costs",{"$f":"'Residential Owner'!B14","v":1228207.7999999998}]
["Development Costs ( Per Unit or Per Sq.Ft)",null,{"$f":"'Residential Rental'!C58","v":0},null,{"$f":"Office!D57","v":0},null,{"$f":"Retail!D58","v":0},null,{"$f":"Hotel!C59","v":0},null,{"$f":"Industrial!C57","v":0},null,{"$f":"'Commercial Parking'!D58","v":0}]
["Net Operating Income Analysis ",null,null,null,null,null,null,null,null,null,null,null,null,null,null,"Project Baseline"]
["Project Feature","Project","Total","Project","Total","Project","Total","Project","Total","Project","Total","Project","Total","Project",null,null,"Project"]
["Number of units",{"$f":"'Residential Rental'!C19","v":0},null,null,null,null,null,{"$f":"Hotel!C19","v":0},null,null,null,null,null,{"$f":"SUM(B26,H26)","v":0},null,"     Residential Units",{"$f":"'Residential Owner'!B17","v":1.9999999999999993}]
["Total project size, square feet",{"$f":"'Residential Rental'!C20","v":0},null,{"$f":"Office!D19","v":0},null,{"$f":"Retail!D19","v":0},null,{"$f":"Hotel!C20","v":0},null,{"$f":"Industrial!C19","v":0},null,{"$f":"'Commercial Parking'!D19","v":0},null,{"$f":"SUM(B27,D27,F27,H27,J27,L27)","v":0},null,"     Average Unit Market Price",{"$f":"'Residential Owner'!B18","v":735300}]
["Total Rent (annual or $/sq.ft. per year)",{"$f":"'Residential Rental'!E61","v":0},null,{"$f":"Office!E19","v":0},null,{"$f":"Retail!E19","v":18},null,{"$f":"Hotel!D19","v":150},null,{"$f":"Industrial!D59","v":12},null,{"$f":"'Commercial Parking'!E19","v":52.838095238095235}]
["Projected Sales per Square Foot",null,null,null,null,{"$f":"Retail!E20","v":0},null,null,null,null,null,{"$f":"'Commercial Parking'!E20","v":0},null,{"$f":"IF(F27>0,F29,0)","v":0}]
["Rental Income from Sales Assessment",null,null,null,null,null,{"$f":"Retail!E62","v":0},null,null,null,null,null,{"$f":"'Commercial Parking'!E62","v":0},{"$f":"G30","v":0}]
["Gross Potential Rent  (GPI)",null,{"$f":"'Residential Rental'!E62","v":0},null,{"$f":"Office!E60","v":0},null,{"$f":"Retail!E63","v":0},null,{"$f":"Hotel!E63","v":0},null,{"$f":"Industrial!D60","v":0},null,{"$f":"'Commercial Parking'!E63","v":0},{"$f":"SUM(C31,E31,G31,I31,K31,M31)","v":0}]
["Other Income (vending, fines)",{"$f":"'Residential Rental'!C21","v":0},{"$f":"'Residential Rental'!E63","v":0},{"$f":"Office!D20","v":0},{"$f":"Office!E61","v":0},{"$f":"Retail!D21","v":0},{"$f":"Retail!E64","v":0},{"$f":"Hotel!C21","v":0},{"$f":"Hotel!E64","v":0},{"$f":"Industrial!C61","v":0},{"$f":"Industrial!D61","v":0},{"$f":"'Commercial Parking'!D21","v":0},{"$f":"'Commercial Parking'!E64","v":0},0]
["Total Income",null,{"$f":"'Residential Rental'!E64","v":0},null,{"$f":"Office!E62","v":0},null,{"$f":"Retail!E65","v":0},null,{"$f":"Hotel!E65","v":0},null,{"$f":"Industrial!D62","v":0},null,{"$f":"'Commercial Parking'!E65","v":0},0]
["Less: Year 1 Vacancy",{"$f":"1-AF_ResOccup1yr","v":5.0000000000000044E-2},{"$f":"C33*B34","v":0},{"$f":"1-AF_OffOccupYr1","v":5.0000000000000044E-2},{"$f":"E33*D34","v":0},{"$f":"1-AF_RetOccupYr1","v":5.0000000000000044E-2},{"$f":"G33*F34","v":0},{"$f":"1-AF_HotelOccup","v":0.25},{"$f":"I33*H34","v":0},{"$f":"1-AF_IndOccupYr1","v":5.0000000000000044E-2},{"$f":"K33*J34","v":0},{"$f":"1-AF_ParkingOccup","v":0.30000000000000004},{"$f":"M33*L34","v":0},0]
["Less: Vacancy",{"$f":"'Residential Rental'!C22","v":0},{"$f":"'Residential Rental'!E65","v":0},{"$f":"Office!D21","v":5.0000000000000044E-2},{"$f":"Office!E63","v":0},{"$f":"Retail!D22","v":5.0000000000000044E-2},{"$f":"Retail!E66","v":0},{"$f":"Hotel!C22","v":0.25},{"$f":"Hotel!E66","v":0},{"$f":"Industrial!C63","v":5.0000000000000044E-2},{"$f":"Industrial!D63","v":0},{"$f":"'Commercial Parking'!D22","v":0.30000000000000004},{"$f":"'Commercial Parking'!E66","v":0},0]
["Less: Concessions, Bad Debt",{"$f":"'Residential Rental'!C23","v":0},{"$f":"'Residential Rental'!E66","v":0},{"$f":"Office!D22","v":0},{"$f":"Office!E64","v":0},{"$f":"Retail!D23","v":0},{"$f":"Retail!E67","v":0},{"$f":"Hotel!C23","v":0},{"$f":"Hotel!E67","v":0},{"$f":"Industrial!C64","v":0},{"$f":"Industrial!D64","v":0},{"$f":"'Commercial Parking'!D23","v":0},{"$f":"'Commercial Parking'!E67","v":0},0]
["Effective Gross Income  (EGI)",null,{"$f":"'Residential Rental'!E67","v":0},null,{"$f":"Office!E65","v":0},null,{"$f":"Retail!E68","v":0},null,{"$f":"Hotel!E68","v":0},null,{"$f":"Industrial!D65","v":0},null,{"$f":"'Commercial Parking'!E68","v":0},0]
["Less: Operating Costs ($/unit: $/sq.ft: %ofGPI)",{"$f":"'Residential Rental'!C24","v":0},{"$f":"'Residential Rental'!E68","v":0},{"$f":"Office!D23","v":0},{"$f":"Office!E66","v":0},{"$f":"Retail!D24","v":0},{"$f":"Retail!E69","v":0},{"$f":"Hotel!C24","v":0},{"$f":"Hotel!E69","v":0},{"$f":"Industrial!C66","v":0},{"$f":"Industrial!D66","v":0},{"$f":"'Commercial Parking'!D24","v":0},{"$f":"'Commercial Parking'!E69","v":0},0]
["Net Operating Income",null,{"$f":"'Residential Rental'!E69","v":0},null,{"$f":"Office!E67","v":0},null,{"$f":"Retail!E70","v":0},null,{"$f":"Hotel!E70","v":0},null,{"$f":"Industrial!D67","v":0},null,{"$f":"'Commercial Parking'!E70","v":0},0]
[]
[]
["Initial Project Value Analysis","Res. (Rental)","Office","Retail"," Accommodation","Industrial","Commercial Parking","Rental Summary"]
["CAP RATE (Yield to Costs)",{"$f":"'Residential Rental'!C72","v":0},{"$f":"Office!D70","v":0},{"$f":"Retail!D73","v":0},{"$f":"Hotel!D73","v":0},{"$f":"Industrial!C70","v":0},{"$f":"'Commercial Parking'!D73","v":0},{"$f":"N39/H18","v":{"$error":"#DIV/0!"}}]
["Debt Service",{"$f":"'Residential Rental'!C73","v":0},{"$f":"Office!D71","v":0},{"$f":"Retail!D74","v":0},{"$f":"Hotel!D74","v":0},{"$f":"Industrial!C71","v":0},{"$f":"'Commercial Parking'!D74","v":0},{"$f":"SUM(B44:G44)","v":0}]
["Cash Flow",{"$f":"'Residential Rental'!C74","v":0},{"$f":"Office!D72","v":0},{"$f":"Retail!D75","v":0},{"$f":"Hotel!D75","v":0},{"$f":"Industrial!C72","v":0},{"$f":"'Commercial Parking'!D75","v":0},{"$f":"SUM(B45:G45)","v":0}]
["Return on Equity (Year 1)",{"$f":"'Residential Rental'!C75","v":0},{"$f":"Office!D73","v":0},{"$f":"Retail!D76","v":0},{"$f":"Hotel!D76","v":0},{"$f":"Industrial!C73","v":0},{"$f":"'Commercial Parking'!D76","v":0},{"$f":"H45/H76","v":{"$error":"#DIV/0!"}}]
["Property Value (Year 1)"]
["NOI",{"$f":"'Residential Rental'!C77","v":0},{"$f":"Office!D75","v":0},{"$f":"Retail!D78","v":0},{"$f":"Hotel!D78","v":0},{"$f":"Industrial!C75","v":0},{"$f":"'Commercial Parking'!D78","v":0},{"$f":"SUM(B48:G48)","v":0}]
["Going in Cap Rate",{"$f":"'Residential Rental'!C78","v":0},{"$f":"Office!D76","v":0},{"$f":"Retail!D79","v":0},{"$f":"Hotel!D79","v":0},{"$f":"Industrial!C76","v":0},{"$f":"'Commercial Parking'!D79","v":0},{"$f":"IFERROR(SUMPRODUCT(B18:G18,B49:G49)/H18,0)","v":0}]
["Project Market Value",{"$f":"'Residential Rental'!C79","v":0},{"$f":"Office!D77","v":0},{"$f":"Retail!D80","v":0},{"$f":"Hotel!D80","v":0},{"$f":"Industrial!C77","v":0},{"$f":"'Commercial Parking'!D80","v":0},{"$f":"SUM(B50:G50)","v":0}]
["Net Project Value",{"$f":"'Residential Rental'!C80","v":0},{"$f":"Office!D78","v":0},{"$f":"Retail!D81","v":0},{"$f":"Hotel!D81","v":0},{"$f":"Industrial!C78","v":0},{"$f":"'Commercial Parking'!D81","v":0},{"$f":"SUM(B51:G51)","v":0}]
[]
[]
["Debt Financing","Res. (Rental)","Office","Retail"," Accommodation","Industrial","Commercial Parking","Rental Summary"]
["Primary Debt"]
["Total Value",{"$f":"'Residential Rental'!E84","v":0},{"$f":"Office!E83","v":0},{"$f":"Retail!E85","v":0},{"$f":"Hotel!E85","v":0},{"$f":"Industrial!E82","v":0},{"$f":"'Commercial Parking'!E85","v":0},{"$f":"IF(H50>N22,N22,H50)","v":0}]
["LTV Ratio",{"$f":"'Advanced Financial'!C91","v":0.8},{"$f":"'Advanced Financial'!F91","v":0.7},{"$f":"'Advanced Financial'!E91","v":0.7},{"$f":"'Advanced Financial'!D91","v":0.7},{"$f":"'Advanced Financial'!G91","v":0.7},{"$f":"'Advanced Financial'!E91","v":0.7},{"$f":"IFERROR(SUMPRODUCT(B18:G18,B57:G57)/H18,0)","v":0}]
["Maximum LTV",{"$f":"'Residential Rental'!E85","v":0},{"$f":"Office!E84","v":0},{"$f":"Retail!E86","v":0},{"$f":"Hotel!E86","v":0},{"$f":"Industrial!E83","v":0},{"$f":"'Commercial Parking'!E86","v":0},{"$f":"SUM(B58:G58)","v":0}]
["Imputed Loan Amount",{"$f":"'Residential Rental'!E86","v":0},{"$f":"Office!E85","v":0},{"$f":"Retail!E87","v":0},{"$f":"Hotel!E87","v":0},{"$f":"Industrial!E84","v":0},{"$f":"'Commercial Parking'!E87","v":0},{"$f":"SUM(B59:G59)","v":0}]
["Rate",{"$f":"'Residential Rental'!E87","v":0.06},{"$f":"Office!E86","v":0.06},{"$f":"Retail!E88","v":0.06},{"$f":"Hotel!E88","v":0.06},{"$f":"'Advanced Financial'!G92","v":0.06},{"$f":"'Commercial Parking'!E88","v":0.06},{"$f":"IFERROR(SUMPRODUCT(B18:G18,B60:G60)/H18,0)","v":0}]
["Amortization Period, Years",{"$f":"'Residential Rental'!E88","v":30},{"$f":"Office!E87","v":25},{"$f":"Retail!E89","v":25},{"$f":"Hotel!E89","v":25},{"$f":"'Advanced Financial'!G93","v":25},{"$f":"'Commercial Parking'!E89","v":25},{"$f":"IFERROR(SUMPRODUCT(B18:G18,B61:G61)/H18,0)","v":0}]
["Annual Debt Service (Amortized)",{"$f":"'Residential Rental'!E89","v":0},{"$f":"Office!E88","v":0},{"$f":"Retail!E90","v":0},{"$f":"Hotel!E90","v":0},{"$f":"Industrial!E87","v":0},{"$f":"'Commercial Parking'!E90","v":0},{"$f":"PMT(H60/12,H61*12,H59)*12","v":{"$error":"#NUM!"}}]
["Public Leveraging Loan"]
["LTV Ratio",{"$f":"IF(B83=1,'Gap Financing Options'!C69,0)","v":0},{"$f":"IF(C83=1,'Gap Financing Options'!D69,0)","v":0},{"$f":"IF(D83=1,'Gap Financing Options'!E69,0)","v":0},{"$f":"IF(E83=1,'Gap Financing Options'!F69,0)","v":0},{"$f":"IF(F83=1,'Gap Financing Options'!G69,0)","v":0},{"$f":"IF(D83=1,'Gap Financing Options'!E69,0)","v":0},{"$f":"IFERROR(SUMPRODUCT(B18:G18,B64:G64)/H18,0)","v":0}]
["Maximum LTV",{"$f":"'Residential Rental'!E91","v":0},{"$f":"Office!E90","v":0},{"$f":"Retail!E92","v":0},{"$f":"Hotel!E92","v":0},{"$f":"Industrial!E89","v":0},{"$f":"'Commercial Parking'!E92","v":0},{"$f":"SUM(B65:G65)","v":0}]
["Imputed Loan Amount",{"$f":"'Residential Rental'!E92","v":0},{"$f":"Office!E91","v":0},{"$f":"Retail!E93","v":0},{"$f":"Hotel!E93","v":0},{"$f":"Industrial!E90","v":0},{"$f":"'Commercial Parking'!E93","v":0},{"$f":"SUM(B66:G66)","v":0}]
["Rate",{"$f":"'Residential Rental'!E93","v":0},{"$f":"Office!E92","v":0},{"$f":"Retail!E94","v":0},{"$f":"Hotel!E94","v":0},{"$f":"Industrial!E91","v":0},{"$f":"'Commercial Parking'!E94","v":0},{"$f":"IFERROR(SUMPRODUCT(B18:G18,B67:G67)/H18,0)","v":0}]
["Amortization Period, Years",{"$f":"'Residential Rental'!E94","v":0},{"$f":"Office!E93","v":0},{"$f":"Retail!E95","v":0},{"$f":"Hotel!E95","v":0},{"$f":"Industrial!E92","v":0},{"$f":"'Commercial Parking'!E95","v":0},{"$f":"IFERROR(SUMPRODUCT(B18:G18,B68:G68)/H18,0)","v":0}]
["Annual Debt Service (Amortized)",{"$f":"'Residential Rental'!E95","v":0},{"$f":"Office!E94","v":0},{"$f":"Retail!E96","v":0},{"$f":"Hotel!E96","v":0},{"$f":"Industrial!E93","v":0},{"$f":"'Commercial Parking'!E96","v":0},{"$f":"IFERROR((PMT(H67/12,H68*12,H66)*12),0)","v":0}]
["Total Debt",{"$f":"'Residential Rental'!E97","v":0},{"$f":"Office!E96","v":0},{"$f":"Retail!E98","v":0},{"$f":"Hotel!E98","v":0},{"$f":"Industrial!E95","v":0},{"$f":"'Commercial Parking'!E98","v":0},{"$f":"SUM(B70:G70)","v":0}]
["Total Debt Service",{"$f":"'Residential Rental'!E98","v":0},{"$f":"Office!E97","v":0},{"$f":"Retail!E99","v":0},{"$f":"Hotel!E99","v":0},{"$f":"Industrial!E96","v":0},{"$f":"'Commercial Parking'!E99","v":0},{"$f":"SUM(B71:G71)","v":0}]
["Summary"]
["Total Development Costs",{"$f":"'Residential Rental'!E100","v":0},{"$f":"Office!E99","v":0},{"$f":"Retail!E101","v":0},{"$f":"Hotel!E101","v":0},{"$f":"Industrial!E98","v":0},{"$f":"'Commercial Parking'!E101","v":0},{"$f":"SUM(B73:G73)","v":0}]
["Equity Required",{"$f":"'Residential Rental'!E101","v":0},{"$f":"Office!E100","v":0},{"$f":"Retail!E102","v":0},{"$f":"Hotel!E102","v":0},{"$f":"Industrial!E99","v":0},{"$f":"'Commercial Parking'!E102","v":0},0]
["Total Development Offsets (Contributions to Equity)",{"$f":"'Residential Rental'!E102","v":0},{"$f":"Office!E101","v":0},{"$f":"Retail!E103","v":0},{"$f":"Hotel!E103","v":0},{"$f":"Industrial!E100","v":0},{"$f":"'Commercial Parking'!E103","v":0},0]
["Net Equity Required",{"$f":"'Residential Rental'!E103","v":0},{"$f":"Office!E102","v":0},{"$f":"Retail!E104","v":0},{"$f":"Hotel!E104","v":0},{"$f":"Industrial!E101","v":0},{"$f":"'Commercial Parking'!E104","v":0},0]
["Total Project Cost",{"$f":"'Residential Rental'!E104","v":0},{"$f":"Office!E103","v":0},{"$f":"Retail!E105","v":0},{"$f":"Hotel!E105","v":0},{"$f":"Industrial!E102","v":0},{"$f":"'Commercial Parking'!E105","v":0},0]
["Total Project Cost After Development Offsets",{"$f":"'Residential Rental'!E105","v":0},{"$f":"Office!E104","v":0},{"$f":"Retail!E106","v":0},{"$f":"Hotel!E106","v":0},{"$f":"Industrial!E103","v":0},{"$f":"'Commercial Parking'!E106","v":0},0]
["Public Participation"]
["Capital Investment",{"$f":"'Residential Rental'!E107","v":0},{"$f":"Office!E106","v":0},{"$f":"Retail!E108","v":0},{"$f":"Hotel!E108","v":0},{"$f":"Industrial!E105","v":0},{"$f":"'Commercial Parking'!E108","v":0},{"$f":"SUM(B80:G80)","v":0}]
["Annual Cash Throw Off",{"$f":"'Residential Rental'!E108","v":0},{"$f":"Office!E107","v":0},{"$f":"Retail!E109","v":0},{"$f":"Hotel!E109","v":0},{"$f":"Industrial!E106","v":0},{"$f":"'Commercial Parking'!E109","v":0},{"$f":"SUM(B81:G81)","v":0}]
["Share of Net Sales Price",{"$f":"'Residential Rental'!E109","v":0},{"$f":"Office!E108","v":0},{"$f":"Retail!E110","v":0},{"$f":"Hotel!E110","v":0},{"$f":"Industrial!E107","v":0},{"$f":"'Commercial Parking'!E110","v":0},{"$f":"IFERROR(SUMPRODUCT(B18:G18,B82:G82)/H18,0)","v":0}]
["Public Leveraging Loan Included in Analysis? ",{"$f":"'Residential Rental'!E110","v":0},{"$f":"Office!E109","v":0},{"$f":"Retail!E111","v":0},{"$f":"Hotel!E111","v":0},{"$f":"Industrial!E108","v":0},{"$f":"'Commercial Parking'!E111","v":0},{"$f":"IFERROR(SUMPRODUCT(B18:G18,B83:G83)/H18,0)","v":0}]
["Target IRR",{"$f":"'Residential Rental'!E111","v":0.05},{"$f":"Office!E110","v":0.05},{"$f":"Retail!E112","v":0.05},{"$f":"Hotel!E112","v":0.05},{"$f":"Industrial!E109","v":0.05},{"$f":"'Commercial Parking'!E112","v":0.05},{"$f":"IFERROR(SUMPRODUCT(B18:G18,B84:G84)/H18,0)","v":0}]
[]
[]
["Operating Statement Summary","Escalation","Year 1","Year 2","Year 3","Year 4","Year 5","Year 6","Year 7","Year 8","Year 9","Year 10"]
["GPI",{"$f":"IFERROR(SUMPRODUCT('Advanced Financial'!C84:H84,B18:G18)/H18,0)","v":0},{"$f":"N31","v":0},{"$f":"C88*(1+$B$88)","v":0},{"$f":"D88*(1+$B$88)","v":0},{"$f":"E88*(1+$B$88)","v":0},0,0,0,0,0,0]
["Other Income",null,{"$f":"N32","v":0},{"$f":"C89*(1+$B$88)","v":0},{"$f":"D89*(1+$B$88)","v":0},0,0,0,0,0,0,0]
["Total Income",null,{"$f":"C88+C89","v":0},{"$f":"D88+D89","v":0},0,0,0,0,0,0,0,0]
["Less: Vacancy",{"$f":"N35/$N$33","v":{"$error":"#DIV/0!"}},{"$f":"N34","v":0},{"$f":"$B$91*D90","v":{"$error":"#DIV/0!"}},{"$error":"#DIV/0!"},{"$error":"#DIV/0!"},{"$error":"#DIV/0!"},{"$error":"#DIV/0!"},{"$error":"#DIV/0!"},{"$error":"#DIV/0!"},{"$error":"#DIV/0!"},{"$error":"#DIV/0!"}]
["Less: Concessions, Market Loss",{"$f":"N36/$N$33","v":{"$error":"#DIV/0!"}},{"$f":"$B$92*C90","v":{"$error":"#DIV/0!"}},{"$f":"$B$92*D90","v":{"$error":"#DIV/0!"}},{"$error":"#DIV/0!"},{"$error":"#DIV/0!"},{"$error":"#DIV/0!"},{"$error":"#DIV/0!"},{"$error":"#DIV/0!"},{"$error":"#DIV/0!"},{"$error":"#DIV/0!"},{"$error":"#DIV/0!"}]
["EGI",null,{"$f":"C90-C91-C92","v":{"$error":"#DIV/0!"}},{"$f":"D90-D91-D92","v":{"$error":"#DIV/0!"}},{"$error":"#DIV/0!"},{"$error":"#DIV/0!"},{"$error":"#DIV/0!"},{"$error":"#DIV/0!"},{"$error":"#DIV/0!"},{"$error":"#DIV/0!"},{"$error":"#DIV/0!"},{"$error":"#DIV/0!"}]
["Less: Operating Costs",{"$f":"IFERROR(SUMPRODUCT('Advanced Financial'!C85:H85,B18:G18)/H18,0)","v":0},{"$f":"N38","v":0},{"$f":"C94*(1+$B$94)","v":0},{"$f":"D94*(1+$B$94)","v":0},0,0,0,0,0,0,0]
["Less: Property Taxes",null,{"$f":"SUM('Residential Rental'!E122,Office!E121,Retail!E124,Hotel!E124,Industrial!E121,'Commercial Parking'!E124)","v":0},{"$f":"SUM('Residential Rental'!F122,Office!F121,Retail!F124,Hotel!F124,Industrial!F121,'Commercial Parking'!F124)","v":0},{"$f":"SUM('Residential Rental'!G122,Office!G121,Retail!G124,Hotel!G124,Industrial!G121,'Commercial Parking'!G124)","v":0},{"$f":"SUM('Residential Rental'!H122,Office!H121,Retail!H124,Hotel!H124,Industrial!H121,'Commercial Parking'!H124)","v":0},{"$f":"SUM('Residential Rental'!I122,Office!I121,Retail!I124,Hotel!I124,Industrial!I121,'Commercial Parking'!I124)","v":0},{"$f":"SUM('Residential Rental'!J122,Office!J121,Retail!J124,Hotel!J124,Industrial!J121,'Commercial Parking'!J124)","v":0},{"$f":"SUM('Residential Rental'!K122,Office!K121,Retail!K124,Hotel!K124,Industrial!K121,'Commercial Parking'!K124)","v":0},{"$f":"SUM('Residential Rental'!L122,Office!L121,Retail!L124,Hotel!L124,Industrial!L121,'Commercial Parking'!L124)","v":0},{"$f":"SUM('Residential Rental'!M122,Office!M121,Retail!M124,Hotel!M124,Industrial!M121,'Commercial Parking'!M124)","v":0},{"$f":"SUM('Residential Rental'!N122,Office!N121,Retail!N124,Hotel!N124,Industrial!N121,'Commercial Parking'!N124)","v":0}]
["Plus: Property Tax Abatement",null,{"$f":"SUM('Residential Rental'!E123,Office!E122,Retail!E125,Hotel!E125,Industrial!E122,'Commercial Parking'!E125)","v":0},{"$f":"SUM('Residential Rental'!F123,Office!F122,Retail!F125,Hotel!F125,Industrial!F122,'Commercial Parking'!F125)","v":0},{"$f":"SUM('Residential Rental'!G123,Office!G122,Retail!G125,Hotel!G125,Industrial!G122,'Commercial Parking'!G125)","v":0},{"$f":"SUM('Residential Rental'!H123,Office!H122,Retail!H125,Hotel!H125,Industrial!H122,'Commercial Parking'!H125)","v":0},{"$f":"SUM('Residential Rental'!I123,Office!I122,Retail!I125,Hotel!I125,Industrial!I122,'Commercial Parking'!I125)","v":0},{"$f":"SUM('Residential Rental'!J123,Office!J122,Retail!J125,Hotel!J125,Industrial!J122,'Commercial Parking'!J125)","v":0},{"$f":"SUM('Residential Rental'!K123,Office!K122,Retail!K125,Hotel!K125,Industrial!K122,'Commercial Parking'!K125)","v":0},{"$f":"SUM('Residential Rental'!L123,Office!L122,Retail!L125,Hotel!L125,Industrial!L122,'Commercial Parking'!L125)","v":0},{"$f":"SUM('Residential Rental'!M123,Office!M122,Retail!M125,Hotel!M125,Industrial!M122,'Commercial Parking'!M125)","v":0},{"$f":"SUM('Residential Rental'!N123,Office!N122,Retail!N125,Hotel!N125,Industrial!N122,'Commercial Parking'!N125)","v":0}]
["Plus: Vertical Housing Tax Exemption",null,{"$f":"'Residential Rental'!E124","v":0},{"$f":"'Residential Rental'!F124","v":0},{"$f":"'Residential Rental'!G124","v":0},{"$f":"'Residential Rental'!H124","v":0},{"$f":"'Residential Rental'!I124","v":0},{"$f":"'Residential Rental'!J124","v":0},{"$f":"'Residential Rental'!K124","v":0},{"$f":"'Residential Rental'!L124","v":0},{"$f":"'Residential Rental'!M124","v":0},{"$f":"'Residential Rental'!N124","v":0}]
["Plus Sales Tax Abatement",null,{"$f":"SUM(Office!E123,Retail!E126,Hotel!E126,Industrial!E123,'Commercial Parking'!E126)","v":0},{"$f":"SUM(Office!F123,Retail!F126,Hotel!F126,Industrial!F123,'Commercial Parking'!F126)","v":0},{"$f":"SUM(Office!G123,Retail!G126,Hotel!G126,Industrial!G123,'Commercial Parking'!G126)","v":0},{"$f":"SUM(Office!H123,Retail!H126,Hotel!H126,Industrial!H123,'Commercial Parking'!H126)","v":0},{"$f":"SUM(Office!I123,Retail!I126,Hotel!I126,Industrial!I123,'Commercial Parking'!I126)","v":0},{"$f":"SUM(Office!J123,Retail!J126,Hotel!J126,Industrial!J123,'Commercial Parking'!J126)","v":0},{"$f":"SUM(Office!K123,Retail!K126,Hotel!K126,Industrial!K123,'Commercial Parking'!K126)","v":0},{"$f":"SUM(Office!L123,Retail!L126,Hotel!L126,Industrial!L123,'Commercial Parking'!L126)","v":0},{"$f":"SUM(Office!M123,Retail!M126,Hotel!M126,Industrial!M123,'Commercial Parking'!M126)","v":0},{"$f":"SUM(Office!N123,Retail!N126,Hotel!N126,Industrial!N123,'Commercial Parking'!N126)","v":0}]
["Plus TIF + IRA Retainage of Taxes",null,{"$f":"SUM('Residential Rental'!E126,Office!E124,Hotel!E127,Industrial!E124)","v":0},{"$f":"SUM('Residential Rental'!F126,Office!F124,Hotel!F127,Industrial!F124)","v":0},{"$f":"SUM('Residential Rental'!G126,Office!G124,Hotel!G127,Industrial!G124)","v":0},{"$f":"SUM('Residential Rental'!H126,Office!H124,Hotel!H127,Industrial!H124)","v":0},{"$f":"SUM('Residential Rental'!I126,Office!I124,Hotel!I127,Industrial!I124)","v":0},{"$f":"SUM('Residential Rental'!J126,Office!J124,Hotel!J127,Industrial!J124)","v":0},{"$f":"SUM('Residential Rental'!K126,Office!K124,Hotel!K127,Industrial!K124)","v":0},{"$f":"SUM('Residential Rental'!L126,Office!L124,Hotel!L127,Industrial!L124)","v":0},{"$f":"SUM('Residential Rental'!M126,Office!M124,Hotel!M127,Industrial!M124)","v":0},{"$f":"SUM('Residential Rental'!N126,Office!N124,Hotel!N127,Industrial!N124)","v":0}]
["Cash Throw Off to Public Partner",null,{"$f":"SUM('Residential Rental'!E125,Office!E125,Retail!E128,Hotel!E128,'Commercial Parking'!E128)","v":0},{"$f":"SUM('Residential Rental'!F125,Office!F125,Retail!F128,Hotel!F128,'Commercial Parking'!F128)","v":0},{"$f":"SUM('Residential Rental'!G125,Office!G125,Retail!G128,Hotel!G128,'Commercial Parking'!G128)","v":0},{"$f":"SUM('Residential Rental'!H125,Office!H125,Retail!H128,Hotel!H128,'Commercial Parking'!H128)","v":0},{"$f":"SUM('Residential Rental'!I125,Office!I125,Retail!I128,Hotel!I128,'Commercial Parking'!I128)","v":0},{"$f":"SUM('Residential Rental'!J125,Office!J125,Retail!J128,Hotel!J128,'Commercial Parking'!J128)","v":0},{"$f":"SUM('Residential Rental'!K125,Office!K125,Retail!K128,Hotel!K128,'Commercial Parking'!K128)","v":0},{"$f":"SUM('Residential Rental'!L125,Office!L125,Retail!L128,Hotel!L128,'Commercial Parking'!L128)","v":0},{"$f":"SUM('Residential Rental'!M125,Office!M125,Retail!M128,Hotel!M128,'Commercial Parking'!M128)","v":0},{"$f":"SUM('Residential Rental'!N125,Office!N125,Retail!N128,Hotel!N128)","v":0}]
["Plus: Retainage of Property & Sales Taxes",null,{"$f":"Retail!E127","v":0},{"$f":"Retail!F127","v":0},{"$f":"Retail!G127","v":0},{"$f":"Retail!H127","v":0},{"$f":"Retail!I127","v":0},{"$f":"Retail!J127","v":0},{"$f":"Retail!K127","v":0},{"$f":"Retail!L127","v":0},{"$f":"Retail!M127","v":0},{"$f":"Retail!N127","v":0}]
["NOI",null,{"$f":"C93-C95-C94+C96+C97+C98+C99+C100+C101","v":{"$error":"#DIV/0!"}},{"$f":"D93-D95-D94+D96+D97+D98+D99+D100+D101","v":{"$error":"#DIV/0!"}},{"$error":"#DIV/0!"},{"$error":"#DIV/0!"},{"$error":"#DIV/0!"},{"$error":"#DIV/0!"},{"$error":"#DIV/0!"},{"$error":"#DIV/0!"},{"$error":"#DIV/0!"},{"$error":"#DIV/0!"}]
[]
["Less: Debt Service",null,{"$f":"-$H$71","v":0},{"$f":"-$H$71","v":0},0,0,0,0,0,0,0,0]
["Net Cash Flow",null,{"$f":"C102-C104","v":{"$error":"#DIV/0!"}},{"$f":"D102-D104","v":{"$error":"#DIV/0!"}},{"$error":"#DIV/0!"},{"$error":"#DIV/0!"},{"$error":"#DIV/0!"},{"$error":"#DIV/0!"},{"$error":"#DIV/0!"},{"$error":"#DIV/0!"},{"$error":"#DIV/0!"},{"$error":"#DIV/0!"}]
[]
["Cap Rate",null,{"$f":"C102/$H$73","v":{"$error":"#DIV/0!"}},{"$error":"#DIV/0!"},{"$error":"#DIV/0!"},{"$error":"#DIV/0!"},{"$error":"#DIV/0!"},{"$error":"#DIV/0!"},{"$error":"#DIV/0!"},{"$error":"#DIV/0!"},{"$error":"#DIV/0!"},{"$error":"#DIV/0!"}]
["Cash on Cash Return (Equity Dividend Rate)",null,{"$f":"IFERROR(C105/$H$76,0)","v":0},{"$f":"D105/$H$76","v":{"$error":"#DIV/0!"}},{"$error":"#DIV/0!"},{"$error":"#DIV/0!"},{"$error":"#DIV/0!"},{"$error":"#DIV/0!"},{"$error":"#DIV/0!"},{"$error":"#DIV/0!"},{"$error":"#DIV/0!"},{"$error":"#DIV/0!"}]
[]
[]
["Project Value","Year 0","Year 1","Year 2","Year 3","Year 4","Year 5","Year 6","Year 7","Year 8","Year 9","Year 10"]
["Terminal Cap Rate, Gross Sales Price",null,{"$f":"IFERROR(SUMPRODUCT('Advanced Financial'!C87:H87,B18:G18)/H18,0)","v":0},null,null,null,null,null,null,null,null,{"$f":"L102/C112","v":{"$error":"#DIV/0!"}},{"$f":"E102/C112","v":{"$error":"#DIV/0!"}}]
["Net Sales = Price Less Sales Cost",null,{"$f":"IFERROR(SUMPRODUCT('Advanced Financial'!C88:H88,B18:G18)/H18,0)","v":0},null,null,null,null,null,null,null,null,{"$f":"L112*(1-C113)","v":{"$error":"#DIV/0!"}}]
["Less Mortgage Balance",null,null,null,null,null,null,null,null,null,null,{"$f":"Z160","v":{"$error":"#NUM!"}}]
["Net Sales Proceeds",null,null,null,null,null,null,null,null,null,null,{"$f":"L113-L114","v":{"$error":"#DIV/0!"}}]
[]
[]
["IRR - Unleveraged (Project Cost)","Year 0","Year 1","Year 2","Year 3","Year 4","Year 5","Year 6","Year 7","Year 8","Year 9","Year 10"]
["Total Investment",{"$f":"-H78","v":0}]
["Project NOI",null,{"$f":"C102","v":{"$error":"#DIV/0!"}},{"$f":"D102","v":{"$error":"#DIV/0!"}},{"$f":"E102","v":{"$error":"#DIV/0!"}},{"$f":"F102","v":{"$error":"#DIV/0!"}},{"$error":"#DIV/0!"},{"$error":"#DIV/0!"},{"$error":"#DIV/0!"},{"$error":"#DIV/0!"},{"$error":"#DIV/0!"},{"$error":"#DIV/0!"}]
["Net Sales Price",null,null,null,null,null,null,null,null,null,null,{"$f":"L113","v":{"$error":"#DIV/0!"}}]
["Total",{"$f":"SUM(B119:B121)","v":0},{"$f":"SUM(C119:C121)","v":{"$error":"#DIV/0!"}},{"$error":"#DIV/0!"},{"$error":"#DIV/0!"},{"$error":"#DIV/0!"},{"$error":"#DIV/0!"},{"$error":"#DIV/0!"},{"$error":"#DIV/0!"},{"$error":"#DIV/0!"},{"$error":"#DIV/0!"},{"$error":"#DIV/0!"},null,1,2,3,4,5,6,7,8,9,10]
["IRR - Project Cost",null,null,null,null,null,null,null,null,null,null,{"$f":"IFERROR(IRR(B122:L122),0)","v":0},null,{"$f":"C122/((1.12)^N122)","v":{"$error":"#DIV/0!"}},{"$f":"D122/((1.12)^O122)","v":{"$error":"#DIV/0!"}},{"$error":"#DIV/0!"},{"$error":"#DIV/0!"},{"$error":"#DIV/0!"},{"$error":"#DIV/0!"},{"$error":"#DIV/0!"},{"$error":"#DIV/0!"},{"$error":"#DIV/0!"},{"$error":"#DIV/0!"}]
["NPV - Project Cost",null,null,null,null,null,null,null,null,null,null,{"$f":"NPV(N6,B122:L122)","v":{"$error":"#DIV/0!"}}]
[]
["IRR - Leveraged (Before Tax)","Year 0","Year 1","Year 2","Year 3","Year 4","Year 5","Year 6","Year 7","Year 8","Year 9","Year 10",null,{"$f":"-SUM(N123:W123)","v":{"$error":"#DIV/0!"}}]
["Original Investment (Equity)",{"$f":"-H76","v":0},null,null,null,null,null,null,null,null,null,null,null,{"$f":"-(N126-B119)","v":{"$error":"#DIV/0!"}}]
["Project Cash Flow",null,{"$f":"C105","v":{"$error":"#DIV/0!"}},{"$f":"D105","v":{"$error":"#DIV/0!"}},{"$error":"#DIV/0!"},{"$error":"#DIV/0!"},{"$error":"#DIV/0!"},{"$error":"#DIV/0!"},{"$error":"#DIV/0!"},{"$error":"#DIV/0!"},{"$error":"#DIV/0!"},{"$error":"#DIV/0!"}]
["Net Sales Proceeds",null,null,null,null,null,null,null,null,null,null,{"$f":"L115","v":{"$error":"#DIV/0!"}}]
["Total",{"$f":"SUM(B127:B129)","v":0},{"$f":"SUM(C127:C129)","v":{"$error":"#DIV/0!"}},{"$error":"#DIV/0!"},{"$error":"#DIV/0!"},{"$error":"#DIV/0!"},{"$error":"#DIV/0!"},{"$error":"#DIV/0!"},{"$error":"#DIV/0!"},{"$error":"#DIV/0!"},{"$error":"#DIV/0!"},{"$error":"#DIV/0!"}]
["IRR - Equity",null,null,null,null,null,null,null,null,null,null,{"$f":"IFERROR(IRR(B130:L130),0)","v":0}]
["NPV - Equity",null,null,null,null,null,null,null,null,null,null,{"$f":"NPV(N7,B130:L130)","v":{"$error":"#DIV/0!"}}]
[]
["IRR - Public Participation","Year 0","Year 1","Year 2","Year 3","Year 4","Year 5","Year 6","Year 7","Year 8","Year 9","Year 10"]
["Original Investment (Equity)",{"$f":"-(H80+(H66*H83))","v":0}]
["Mezzanine Financing",null,{"$f":"-$H$69","v":0},{"$f":"-$H$69","v":0},0,0,0,0,0,0,0,0]
["Cash Throw Off",null,{"$f":"$H$81","v":0},{"$f":"SUM('Residential Rental'!F161,Office!F160,Retail!F163,Hotel!F163)","v":0},{"$f":"SUM('Residential Rental'!G161,Office!G160,Retail!G163,Hotel!G163)","v":0},{"$f":"SUM('Residential Rental'!H161,Office!H160,Retail!H163,Hotel!H163)","v":0},{"$f":"SUM('Residential Rental'!I161,Office!I160,Retail!I163,Hotel!I163)","v":0},{"$f":"SUM('Residential Rental'!J161,Office!J160,Retail!J163,Hotel!J163)","v":0},{"$f":"SUM('Residential Rental'!K161,Office!K160,Retail!K163,Hotel!K163)","v":0},{"$f":"SUM('Residential Rental'!L161,Office!L160,Retail!L163,Hotel!L163)","v":0},{"$f":"SUM('Residential Rental'!M161,Office!M160,Retail!M163,Hotel!M163)","v":0},{"$f":"SUM('Residential Rental'!N161,Office!N160,Retail!N163,Hotel!N163)","v":0}]
["Sale Proceeds",null,null,null,null,null,null,null,null,null,null,{"$f":"L129*H82","v":{"$error":"#DIV/0!"}}]
["Loan Balance",null,null,null,null,null,null,null,null,null,null,{"$f":"V160*H83","v":0}]
["Total",{"$f":"SUM(B135:B139)","v":0},{"$f":"SUM(C135:C139)","v":0},0,0,0,0,0,0,0,0,{"$error":"#DIV/0!"}]
["IRR - Equity",null,null,null,null,null,null,null,null,null,null,{"$f":"IFERROR(IRR(B140:L140),0)","v":0}]
["NPV - Equity",null,null,null,null,null,null,null,null,null,null,{"$f":"NPV(N9,B140:L140)","v":{"$error":"#DIV/0!"}}]
[]
[]
[]
[]
["DEBT SERVICE MORTIZATION TABLES"]
["Primary Debt Amortization",null,null,null,null,"Low Interest Loan",null,null,null,null,"Total Debt Amortization",null,null,null,null,"Annual Debt Service Summary - Primary Debt",null,null,null,null,"Annual Debt Service Summary - Secondary Debt",null,null,null,"Annual Debt Service Summary - Total Debt"]
[]
["Period","Balance","Payment","Interest","Principal","Period","Balance","Payment","Interest","Principal","Period","Balance","Payment","Principal",null,"Year","Balance","Payment","Interest","Principal","Year","Balance","Interest","Principal","Year","Balance","Payment","Interest","Principal"]
[0,{"$f":"H58","v":0},null,null,null,0,{"$f":"H66","v":0},null,null,null,0,{"$f":"B151+G151","v":0},null,null,null,1,{"$f":"B163","v":{"$error":"#NUM!"}},{"$f":"SUM(C152:C163)","v":{"$error":"#NUM!"}},{"$f":"SUM(D152:D163)","v":{"$error":"#NUM!"}},{"$f":"SUM(E152:E163)","v":{"$error":"#NUM!"}},1,{"$f":"G163","v":0},{"$f":"SUM(I152:I163)","v":0},{"$f":"SUM(J152:J163)","v":0},1,{"$f":"Q151+V151","v":{"$error":"#NUM!"}},{"$f":"R151+#REF!","v":{"$error":"#NUM!"}},{"$f":"S151+W151","v":{"$error":"#NUM!"}},{"$f":"T151+X151","v":{"$error":"#NUM!"}}]
[1,{"$f":"B151-E152","v":{"$error":"#NUM!"}},{"$f":"-$H$62/12","v":{"$error":"#NUM!"}},{"$f":"$H$60/12*B151","v":0},{"$f":"C152-D152","v":{"$error":"#NUM!"}},1,{"$f":"G151-J152","v":0},{"$f":"-$H$69/12","v":0},{"$f":"$H$67/12*G151","v":0},{"$f":"H152-I152","v":0},1,{"$f":"G152+B152","v":{"$error":"#NUM!"}},{"$error":"#NUM!"},{"$f":"J152+E152","v":{"$error":"#NUM!"}},null,2,{"$f":"B175","v":{"$error":"#NUM!"}},{"$f":"SUM(C164:C175)","v":{"$error":"#NUM!"}},{"$f":"SUM(D164:D175)","v":{"$error":"#NUM!"}},{"$f":"SUM(E164:E175)","v":{"$error":"#NUM!"}},2,{"$f":"G175","v":0},{"$f":"SUM(I164:I175)","v":0},{"$f":"SUM(J164:J175)","v":0},2,{"$error":"#NUM!"},{"$f":"R152+#REF!","v":{"$error":"#NUM!"}},{"$error":"#NUM!"},{"$error":"#NUM!"}]
[{"$f":"A152+1","v":2},{"$error":"#NUM!"},{"$f":"-$H$62/12","v":{"$error":"#NUM!"}},{"$f":"$H$60/12*B152","v":{"$error":"#NUM!"}},{"$error":"#NUM!"},{"$f":"F152+1","v":2},0,{"$f":"-$H$69/12","v":0},{"$f":"$H$67/12*G152","v":0},0,{"$f":"K152+1","v":2},{"$error":"#NUM!"},{"$error":"#NUM!"},{"$error":"#NUM!"},null,3,{"$f":"B187","v":{"$error":"#NUM!"}},{"$f":"SUM(C176:C187)","v":{"$error":"#NUM!"}},{"$f":"SUM(D176:D187)","v":{"$error":"#NUM!"}},{"$f":"SUM(E176:E187)","v":{"$error":"#NUM!"}},3,{"$f":"G187","v":0},{"$f":"SUM(I176:I187)","v":0},{"$f":"SUM(J176:J187)","v":0},3,{"$error":"#NUM!"},{"$f":"R153+#REF!","v":{"$error":"#NUM!"}},{"$error":"#NUM!"},{"$error":"#NUM!"}]
[3,{"$error":"#NUM!"},{"$error":"#NUM!"},{"$error":"#NUM!"},{"$error":"#NUM!"},3,{"$f":"G153-J154","v":0},0,0,0,3,{"$error":"#NUM!"},{"$error":"#NUM!"},{"$error":"#NUM!"},null,4,{"$f":"B199","v":{"$error":"#NUM!"}},{"$f":"SUM(C188:C199)","v":{"$error":"#NUM!"}},{"$f":"SUM(D188:D199)","v":{"$error":"#NUM!"}},{"$f":"SUM(E188:E199)","v":{"$error":"#NUM!"}},4,{"$f":"G199","v":0},{"$f":"SUM(I188:I199)","v":0},{"$f":"SUM(J188:J199)","v":0},4,{"$error":"#NUM!"},{"$f":"R154+#REF!","v":{"$error":"#NUM!"}},{"$error":"#NUM!"},{"$error":"#NUM!"}]
[4,{"$error":"#NUM!"},{"$error":"#NUM!"},{"$error":"#NUM!"},{"$error":"#NUM!"},4,0,0,0,0,4,{"$error":"#NUM!"},{"$error":"#NUM!"},{"$error":"#NUM!"},null,5,{"$f":"B211","v":{"$error":"#NUM!"}},{"$f":"SUM(C200:C211)","v":{"$error":"#NUM!"}},{"$f":"SUM(D200:D211)","v":{"$error":"#NUM!"}},{"$f":"SUM(E200:E211)","v":{"$error":"#NUM!"}},5,{"$f":"G211","v":0},{"$f":"SUM(I200:I211)","v":0},{"$f":"SUM(J200:J211)","v":0},5,{"$error":"#NUM!"},{"$f":"R155+#REF!","v":{"$error":"#NUM!"}},{"$error":"#NUM!"},{"$error":"#NUM!"}]
[5,{"$error":"#NUM!"},{"$error":"#NUM!"},{"$error":"#NUM!"},{"$error":"#NUM!"},5,0,0,0,0,5,{"$error":"#NUM!"},{"$error":"#NUM!"},{"$error":"#NUM!"},null,6,{"$f":"B223","v":{"$error":"#NUM!"}},{"$f":"SUM(C212:C223)","v":{"$error":"#NUM!"}},{"$f":"SUM(D212:D223)","v":{"$error":"#NUM!"}},{"$f":"SUM(E212:E223)","v":{"$error":"#NUM!"}},6,{"$f":"G223","v":0},{"$f":"SUM(I212:I223)","v":0},{"$f":"SUM(J212:J223)","v":0},6,{"$error":"#NUM!"},{"$f":"R156+#REF!","v":{"$error":"#NUM!"}},{"$error":"#NUM!"},{"$error":"#NUM!"}]
[6,{"$error":"#NUM!"},{"$error":"#NUM!"},{"$error":"#NUM!"},{"$error":"#NUM!"},6,0,0,0,0,6,{"$error":"#NUM!"},{"$error":"#NUM!"},{"$error":"#NUM!"},null,7,{"$f":"B235","v":{"$error":"#NUM!"}},{"$f":"SUM(C224:C235)","v":{"$error":"#NUM!"}},{"$f":"SUM(D224:D235)","v":{"$error":"#NUM!"}},{"$f":"SUM(E224:E235)","v":{"$error":"#NUM!"}},7,{"$f":"G235","v":0},{"$f":"SUM(I224:I235)","v":0},{"$f":"SUM(J224:J235)","v":0},7,{"$error":"#NUM!"},{"$f":"R157+#REF!","v":{"$error":"#NUM!"}},{"$error":"#NUM!"},{"$error":"#NUM!"}]
[7,{"$error":"#NUM!"},{"$error":"#NUM!"},{"$error":"#NUM!"},{"$error":"#NUM!"},7,0,0,0,0,7,{"$error":"#NUM!"},{"$error":"#NUM!"},{"$error":"#NUM!"},null,8,{"$f":"B247","v":{"$error":"#NUM!"}},{"$f":"SUM(C236:C247)","v":{"$error":"#NUM!"}},{"$f":"SUM(D236:D247)","v":{"$error":"#NUM!"}},{"$f":"SUM(E236:E247)","v":{"$error":"#NUM!"}},8,{"$f":"G247","v":0},{"$f":"SUM(I236:I247)","v":0},{"$f":"SUM(J236:J247)","v":0},8,{"$error":"#NUM!"},{"$f":"R158+#REF!","v":{"$error":"#NUM!"}},{"$error":"#NUM!"},{"$error":"#NUM!"}]
[8,{"$error":"#NUM!"},{"$error":"#NUM!"},{"$error":"#NUM!"},{"$error":"#NUM!"},8,0,0,0,0,8,{"$error":"#NUM!"},{"$error":"#NUM!"},{"$error":"#NUM!"},null,9,{"$f":"B259","v":{"$error":"#NUM!"}},{"$f":"SUM(C248:C259)","v":{"$error":"#NUM!"}},{"$f":"SUM(D248:D259)","v":{"$error":"#NUM!"}},{"$f":"SUM(E248:E259)","v":{"$error":"#NUM!"}},9,{"$f":"G259","v":0},{"$f":"SUM(I248:I259)","v":0},{"$f":"SUM(J248:J259)","v":0},9,{"$error":"#NUM!"},{"$f":"R159+#REF!","v":{"$error":"#NUM!"}},{"$error":"#NUM!"},{"$error":"#NUM!"}]
[9,{"$error":"#NUM!"},{"$error":"#NUM!"},{"$error":"#NUM!"},{"$error":"#NUM!"},9,0,0,0,0,9,{"$error":"#NUM!"},{"$error":"#NUM!"},{"$error":"#NUM!"},null,10,{"$f":"B271","v":{"$error":"#NUM!"}},{"$f":"SUM(C260:C271)","v":{"$error":"#NUM!"}},{"$f":"SUM(D260:D271)","v":{"$error":"#NUM!"}},{"$f":"SUM(E260:E271)","v":{"$error":"#NUM!"}},10,{"$f":"G271","v":0},{"$f":"SUM(I260:I271)","v":0},{"$f":"SUM(J260:J271)","v":0},10,{"$error":"#NUM!"},{"$f":"R160+#REF!","v":{"$error":"#NUM!"}},{"$error":"#NUM!"},{"$error":"#NUM!"}]
[10,{"$error":"#NUM!"},{"$error":"#NUM!"},{"$error":"#NUM!"},{"$error":"#NUM!"},10,0,0,0,0,10,{"$error":"#NUM!"},{"$error":"#NUM!"},{"$error":"#NUM!"}]
[11,{"$error":"#NUM!"},{"$error":"#NUM!"},{"$error":"#NUM!"},{"$error":"#NUM!"},11,0,0,0,0,11,{"$error":"#NUM!"},{"$error":"#NUM!"},{"$error":"#NUM!"}]
[12,{"$error":"#NUM!"},{"$error":"#NUM!"},{"$error":"#NUM!"},{"$error":"#NUM!"},12,0,0,0,0,12,{"$error":"#NUM!"},{"$error":"#NUM!"},{"$error":"#NUM!"}]
[13,{"$error":"#NUM!"},{"$error":"#NUM!"},{"$error":"#NUM!"},{"$error":"#NUM!"},13,0,0,0,0,13,{"$error":"#NUM!"},{"$error":"#NUM!"},{"$error":"#NUM!"}]
[14,{"$error":"#NUM!"},{"$error":"#NUM!"},{"$error":"#NUM!"},{"$error":"#NUM!"},14,0,0,0,0,14,{"$error":"#NUM!"},{"$error":"#NUM!"},{"$error":"#NUM!"}]
[15,{"$error":"#NUM!"},{"$error":"#NUM!"},{"$error":"#NUM!"},{"$error":"#NUM!"},15,0,0,0,0,15,{"$error":"#NUM!"},{"$error":"#NUM!"},{"$error":"#NUM!"}]
[16,{"$error":"#NUM!"},{"$error":"#NUM!"},{"$error":"#NUM!"},{"$error":"#NUM!"},16,0,0,0,0,16,{"$error":"#NUM!"},{"$error":"#NUM!"},{"$error":"#NUM!"}]
[17,{"$error":"#NUM!"},{"$error":"#NUM!"},{"$error":"#NUM!"},{"$error":"#NUM!"},17,0,0,0,0,17,{"$error":"#NUM!"},{"$error":"#NUM!"},{"$error":"#NUM!"}]
[18,{"$error":"#NUM!"},{"$error":"#NUM!"},{"$error":"#NUM!"},{"$error":"#NUM!"},18,0,0,0,0,18,{"$error":"#NUM!"},{"$error":"#NUM!"},{"$error":"#NUM!"}]
[19,{"$error":"#NUM!"},{"$error":"#NUM!"},{"$error":"#NUM!"},{"$error":"#NUM!"},19,0,0,0,0,19,{"$error":"#NUM!"},{"$error":"#NUM!"},{"$error":"#NUM!"}]
[20,{"$error":"#NUM!"},{"$error":"#NUM!"},{"$error":"#NUM!"},{"$error":"#NUM!"},20,0,0,0,0,20,{"$error":"#NUM!"},{"$error":"#NUM!"},{"$error":"#NUM!"}]
[21,{"$error":"#NUM!"},{"$error":"#NUM!"},{"$error":"#NUM!"},{"$error":"#NUM!"},21,0,0,0,0,21,{"$error":"#NUM!"},{"$error":"#NUM!"},{"$error":"#NUM!"}]
[22,{"$error":"#NUM!"},{"$error":"#NUM!"},{"$error":"#NUM!"},{"$error":"#NUM!"},22,0,0,0,0,22,{"$error":"#NUM!"},{"$error":"#NUM!"},{"$error":"#NUM!"}]
[23,{"$error":"#NUM!"},{"$error":"#NUM!"},{"$error":"#NUM!"},{"$error":"#NUM!"},23,0,0,0,0,23,{"$error":"#NUM!"},{"$error":"#NUM!"},{"$error":"#NUM!"}]
[24,{"$error":"#NUM!"},{"$error":"#NUM!"},{"$error":"#NUM!"},{"$error":"#NUM!"},24,0,0,0,0,24,{"$error":"#NUM!"},{"$error":"#NUM!"},{"$error":"#NUM!"}]
[25,{"$error":"#NUM!"},{"$error":"#NUM!"},{"$error":"#NUM!"},{"$error":"#NUM!"},25,0,0,0,0,25,{"$error":"#NUM!"},{"$error":"#NUM!"},{"$error":"#NUM!"}]
[26,{"$error":"#NUM!"},{"$error":"#NUM!"},{"$error":"#NUM!"},{"$error":"#NUM!"},26,0,0,0,0,26,{"$error":"#NUM!"},{"$error":"#NUM!"},{"$error":"#NUM!"}]
[27,{"$error":"#NUM!"},{"$error":"#NUM!"},{"$error":"#NUM!"},{"$error":"#NUM!"},27,0,0,0,0,27,{"$error":"#NUM!"},{"$error":"#NUM!"},{"$error":"#NUM!"}]
[28,{"$error":"#NUM!"},{"$error":"#NUM!"},{"$error":"#NUM!"},{"$error":"#NUM!"},28,0,0,0,0,28,{"$error":"#NUM!"},{"$error":"#NUM!"},{"$error":"#NUM!"}]
[29,{"$error":"#NUM!"},{"$error":"#NUM!"},{"$error":"#NUM!"},{"$error":"#NUM!"},29,0,0,0,0,29,{"$error":"#NUM!"},{"$error":"#NUM!"},{"$error":"#NUM!"}]
[30,{"$error":"#NUM!"},{"$error":"#NUM!"},{"$error":"#NUM!"},{"$error":"#NUM!"},30,0,0,0,0,30,{"$error":"#NUM!"},{"$error":"#NUM!"},{"$error":"#NUM!"}]
[31,{"$error":"#NUM!"},{"$error":"#NUM!"},{"$error":"#NUM!"},{"$error":"#NUM!"},31,0,0,0,0,31,{"$error":"#NUM!"},{"$error":"#NUM!"},{"$error":"#NUM!"}]
[32,{"$error":"#NUM!"},{"$error":"#NUM!"},{"$error":"#NUM!"},{"$error":"#NUM!"},32,0,0,0,0,32,{"$error":"#NUM!"},{"$error":"#NUM!"},{"$error":"#NUM!"}]
[33,{"$error":"#NUM!"},{"$error":"#NUM!"},{"$error":"#NUM!"},{"$error":"#NUM!"},33,0,0,0,0,33,{"$error":"#NUM!"},{"$error":"#NUM!"},{"$f":"J184+E184","v":{"$error":"#NUM!"}}]
[34,{"$error":"#NUM!"},{"$error":"#NUM!"},{"$error":"#NUM!"},{"$error":"#NUM!"},34,0,0,0,0,34,{"$error":"#NUM!"},{"$error":"#NUM!"},{"$error":"#NUM!"}]
[35,{"$error":"#NUM!"},{"$error":"#NUM!"},{"$error":"#NUM!"},{"$error":"#NUM!"},35,0,0,0,0,35,{"$error":"#NUM!"},{"$error":"#NUM!"},{"$error":"#NUM!"}]
[36,{"$error":"#NUM!"},{"$error":"#NUM!"},{"$error":"#NUM!"},{"$error":"#NUM!"},36,0,0,0,0,36,{"$error":"#NUM!"},{"$error":"#NUM!"},{"$error":"#NUM!"}]
[37,{"$error":"#NUM!"},{"$error":"#NUM!"},{"$error":"#NUM!"},{"$error":"#NUM!"},37,0,0,0,0,37,{"$error":"#NUM!"},{"$error":"#NUM!"},{"$error":"#NUM!"}]
[38,{"$error":"#NUM!"},{"$error":"#NUM!"},{"$error":"#NUM!"},{"$error":"#NUM!"},38,0,0,0,0,38,{"$error":"#NUM!"},{"$error":"#NUM!"},{"$error":"#NUM!"}]
[39,{"$error":"#NUM!"},{"$error":"#NUM!"},{"$error":"#NUM!"},{"$error":"#NUM!"},39,0,0,0,0,39,{"$error":"#NUM!"},{"$error":"#NUM!"},{"$error":"#NUM!"}]
[40,{"$error":"#NUM!"},{"$error":"#NUM!"},{"$error":"#NUM!"},{"$error":"#NUM!"},40,0,0,0,0,40,{"$error":"#NUM!"},{"$error":"#NUM!"},{"$error":"#NUM!"}]
[41,{"$error":"#NUM!"},{"$error":"#NUM!"},{"$error":"#NUM!"},{"$error":"#NUM!"},41,0,0,0,0,41,{"$error":"#NUM!"},{"$error":"#NUM!"},{"$error":"#NUM!"}]
[42,{"$error":"#NUM!"},{"$error":"#NUM!"},{"$error":"#NUM!"},{"$error":"#NUM!"},42,0,0,0,0,42,{"$error":"#NUM!"},{"$error":"#NUM!"},{"$error":"#NUM!"}]
[43,{"$error":"#NUM!"},{"$error":"#NUM!"},{"$error":"#NUM!"},{"$error":"#NUM!"},43,0,0,0,0,43,{"$error":"#NUM!"},{"$error":"#NUM!"},{"$error":"#NUM!"}]
[44,{"$error":"#NUM!"},{"$error":"#NUM!"},{"$error":"#NUM!"},{"$error":"#NUM!"},44,0,0,0,0,44,{"$error":"#NUM!"},{"$error":"#NUM!"},{"$error":"#NUM!"}]
[45,{"$error":"#NUM!"},{"$error":"#NUM!"},{"$error":"#NUM!"},{"$error":"#NUM!"},45,0,0,0,0,45,{"$error":"#NUM!"},{"$error":"#NUM!"},{"$error":"#NUM!"}]
[46,{"$error":"#NUM!"},{"$error":"#NUM!"},{"$error":"#NUM!"},{"$error":"#NUM!"},46,0,0,0,0,46,{"$error":"#NUM!"},{"$error":"#NUM!"},{"$error":"#NUM!"}]
[47,{"$error":"#NUM!"},{"$error":"#NUM!"},{"$error":"#NUM!"},{"$error":"#NUM!"},47,0,0,0,0,47,{"$error":"#NUM!"},{"$error":"#NUM!"},{"$error":"#NUM!"}]
[48,{"$error":"#NUM!"},{"$error":"#NUM!"},{"$error":"#NUM!"},{"$error":"#NUM!"},48,0,0,0,0,48,{"$error":"#NUM!"},{"$error":"#NUM!"},{"$error":"#NUM!"}]
[49,{"$error":"#NUM!"},{"$error":"#NUM!"},{"$error":"#NUM!"},{"$error":"#NUM!"},49,0,0,0,0,49,{"$error":"#NUM!"},{"$error":"#NUM!"},{"$error":"#NUM!"}]
[50,{"$error":"#NUM!"},{"$error":"#NUM!"},{"$error":"#NUM!"},{"$error":"#NUM!"},50,0,0,0,0,50,{"$error":"#NUM!"},{"$error":"#NUM!"},{"$error":"#NUM!"}]
[51,{"$error":"#NUM!"},{"$error":"#NUM!"},{"$error":"#NUM!"},{"$error":"#NUM!"},51,0,0,0,0,51,{"$error":"#NUM!"},{"$error":"#NUM!"},{"$error":"#NUM!"}]
[52,{"$error":"#NUM!"},{"$error":"#NUM!"},{"$error":"#NUM!"},{"$error":"#NUM!"},52,0,0,0,0,52,{"$error":"#NUM!"},{"$error":"#NUM!"},{"$error":"#NUM!"}]
[53,{"$error":"#NUM!"},{"$error":"#NUM!"},{"$error":"#NUM!"},{"$error":"#NUM!"},53,0,0,0,0,53,{"$error":"#NUM!"},{"$error":"#NUM!"},{"$error":"#NUM!"}]
[54,{"$error":"#NUM!"},{"$error":"#NUM!"},{"$error":"#NUM!"},{"$error":"#NUM!"},54,0,0,0,0,54,{"$error":"#NUM!"},{"$error":"#NUM!"},{"$error":"#NUM!"}]
[55,{"$error":"#NUM!"},{"$error":"#NUM!"},{"$error":"#NUM!"},{"$error":"#NUM!"},55,0,0,0,0,55,{"$error":"#NUM!"},{"$error":"#NUM!"},{"$error":"#NUM!"}]
[56,{"$error":"#NUM!"},{"$error":"#NUM!"},{"$error":"#NUM!"},{"$error":"#NUM!"},56,0,0,0,0,56,{"$error":"#NUM!"},{"$error":"#NUM!"},{"$error":"#NUM!"}]
[57,{"$error":"#NUM!"},{"$error":"#NUM!"},{"$error":"#NUM!"},{"$error":"#NUM!"},57,0,0,0,0,57,{"$error":"#NUM!"},{"$error":"#NUM!"},{"$error":"#NUM!"}]
[58,{"$error":"#NUM!"},{"$error":"#NUM!"},{"$error":"#NUM!"},{"$error":"#NUM!"},58,0,0,0,0,58,{"$error":"#NUM!"},{"$error":"#NUM!"},{"$error":"#NUM!"}]
[59,{"$error":"#NUM!"},{"$error":"#NUM!"},{"$error":"#NUM!"},{"$error":"#NUM!"},59,0,0,0,0,59,{"$error":"#NUM!"},{"$error":"#NUM!"},{"$error":"#NUM!"}]
[60,{"$error":"#NUM!"},{"$error":"#NUM!"},{"$error":"#NUM!"},{"$error":"#NUM!"},60,0,0,0,0,60,{"$error":"#NUM!"},{"$error":"#NUM!"},{"$error":"#NUM!"}]
[61,{"$error":"#NUM!"},{"$error":"#NUM!"},{"$error":"#NUM!"},{"$error":"#NUM!"},61,0,0,0,0,61,{"$error":"#NUM!"},{"$error":"#NUM!"},{"$error":"#NUM!"}]
[62,{"$error":"#NUM!"},{"$error":"#NUM!"},{"$error":"#NUM!"},{"$error":"#NUM!"},62,0,0,0,0,62,{"$error":"#NUM!"},{"$error":"#NUM!"},{"$error":"#NUM!"}]
[63,{"$error":"#NUM!"},{"$error":"#NUM!"},{"$error":"#NUM!"},{"$error":"#NUM!"},63,0,0,0,0,63,{"$error":"#NUM!"},{"$error":"#NUM!"},{"$error":"#NUM!"}]
[64,{"$error":"#NUM!"},{"$error":"#NUM!"},{"$error":"#NUM!"},{"$error":"#NUM!"},64,0,0,0,0,64,{"$error":"#NUM!"},{"$error":"#NUM!"},{"$f":"J215+E215","v":{"$error":"#NUM!"}}]
[65,{"$f":"B215-E216","v":{"$error":"#NUM!"}},{"$error":"#NUM!"},{"$error":"#NUM!"},{"$f":"C216-D216","v":{"$error":"#NUM!"}},65,{"$f":"G215-J216","v":0},0,0,{"$f":"H216-I216","v":0},65,{"$f":"G216+B216","v":{"$error":"#NUM!"}},{"$error":"#NUM!"},{"$error":"#NUM!"}]
[{"$f":"A216+1","v":66},{"$error":"#NUM!"},{"$f":"-$H$62/12","v":{"$error":"#NUM!"}},{"$f":"$H$60/12*B216","v":{"$error":"#NUM!"}},{"$error":"#NUM!"},{"$f":"F216+1","v":66},0,{"$f":"-$H$69/12","v":0},{"$f":"$H$67/12*G216","v":0},0,{"$f":"K216+1","v":66},{"$error":"#NUM!"},{"$error":"#NUM!"},{"$error":"#NUM!"}]
[67,{"$error":"#NUM!"},{"$error":"#NUM!"},{"$error":"#NUM!"},{"$error":"#NUM!"},67,0,0,0,0,67,{"$error":"#NUM!"},{"$error":"#NUM!"},{"$error":"#NUM!"}]
[68,{"$error":"#NUM!"},{"$error":"#NUM!"},{"$error":"#NUM!"},{"$error":"#NUM!"},68,0,0,0,0,68,{"$error":"#NUM!"},{"$error":"#NUM!"},{"$error":"#NUM!"}]
[69,{"$error":"#NUM!"},{"$error":"#NUM!"},{"$error":"#NUM!"},{"$error":"#NUM!"},69,0,0,0,0,69,{"$error":"#NUM!"},{"$error":"#NUM!"},{"$error":"#NUM!"}]
[70,{"$error":"#NUM!"},{"$error":"#NUM!"},{"$error":"#NUM!"},{"$error":"#NUM!"},70,0,0,0,0,70,{"$error":"#NUM!"},{"$error":"#NUM!"},{"$error":"#NUM!"}]
[71,{"$error":"#NUM!"},{"$error":"#NUM!"},{"$error":"#NUM!"},{"$error":"#NUM!"},71,0,0,0,0,71,{"$error":"#NUM!"},{"$error":"#NUM!"},{"$error":"#NUM!"}]
[72,{"$error":"#NUM!"},{"$error":"#NUM!"},{"$error":"#NUM!"},{"$error":"#NUM!"},72,0,0,0,0,72,{"$error":"#NUM!"},{"$error":"#NUM!"},{"$error":"#NUM!"}]
[73,{"$error":"#NUM!"},{"$error":"#NUM!"},{"$error":"#NUM!"},{"$error":"#NUM!"},73,0,0,0,0,73,{"$error":"#NUM!"},{"$error":"#NUM!"},{"$error":"#NUM!"}]
[74,{"$error":"#NUM!"},{"$error":"#NUM!"},{"$error":"#NUM!"},{"$error":"#NUM!"},74,0,0,0,0,74,{"$error":"#NUM!"},{"$error":"#NUM!"},{"$error":"#NUM!"}]
[75,{"$error":"#NUM!"},{"$error":"#NUM!"},{"$error":"#NUM!"},{"$error":"#NUM!"},75,0,0,0,0,75,{"$error":"#NUM!"},{"$error":"#NUM!"},{"$error":"#NUM!"}]
[76,{"$error":"#NUM!"},{"$error":"#NUM!"},{"$error":"#NUM!"},{"$error":"#NUM!"},76,0,0,0,0,76,{"$error":"#NUM!"},{"$error":"#NUM!"},{"$error":"#NUM!"}]
[77,{"$error":"#NUM!"},{"$error":"#NUM!"},{"$error":"#NUM!"},{"$error":"#NUM!"},77,0,0,0,0,77,{"$error":"#NUM!"},{"$error":"#NUM!"},{"$error":"#NUM!"}]
[78,{"$error":"#NUM!"},{"$error":"#NUM!"},{"$error":"#NUM!"},{"$error":"#NUM!"},78,0,0,0,0,78,{"$error":"#NUM!"},{"$error":"#NUM!"},{"$error":"#NUM!"}]
[79,{"$error":"#NUM!"},{"$error":"#NUM!"},{"$error":"#NUM!"},{"$error":"#NUM!"},79,0,0,0,0,79,{"$error":"#NUM!"},{"$error":"#NUM!"},{"$error":"#NUM!"}]
[80,{"$error":"#NUM!"},{"$error":"#NUM!"},{"$error":"#NUM!"},{"$error":"#NUM!"},80,0,0,0,0,80,{"$error":"#NUM!"},{"$error":"#NUM!"},{"$error":"#NUM!"}]
[81,{"$error":"#NUM!"},{"$error":"#NUM!"},{"$error":"#NUM!"},{"$error":"#NUM!"},81,0,0,0,0,81,{"$error":"#NUM!"},{"$error":"#NUM!"},{"$error":"#NUM!"}]
[82,{"$error":"#NUM!"},{"$error":"#NUM!"},{"$error":"#NUM!"},{"$error":"#NUM!"},82,0,0,0,0,82,{"$error":"#NUM!"},{"$error":"#NUM!"},{"$error":"#NUM!"}]
[83,{"$error":"#NUM!"},{"$error":"#NUM!"},{"$error":"#NUM!"},{"$error":"#NUM!"},83,0,0,0,0,83,{"$error":"#NUM!"},{"$error":"#NUM!"},{"$error":"#NUM!"}]
[84,{"$error":"#NUM!"},{"$error":"#NUM!"},{"$error":"#NUM!"},{"$error":"#NUM!"},84,0,0,0,0,84,{"$error":"#NUM!"},{"$error":"#NUM!"},{"$error":"#NUM!"}]
[85,{"$error":"#NUM!"},{"$error":"#NUM!"},{"$error":"#NUM!"},{"$error":"#NUM!"},85,0,0,0,0,85,{"$error":"#NUM!"},{"$error":"#NUM!"},{"$error":"#NUM!"}]
[86,{"$error":"#NUM!"},{"$error":"#NUM!"},{"$error":"#NUM!"},{"$error":"#NUM!"},86,0,0,0,0,86,{"$error":"#NUM!"},{"$error":"#NUM!"},{"$error":"#NUM!"}]
[87,{"$error":"#NUM!"},{"$error":"#NUM!"},{"$error":"#NUM!"},{"$error":"#NUM!"},87,0,0,0,0,87,{"$error":"#NUM!"},{"$error":"#NUM!"},{"$error":"#NUM!"}]
[88,{"$error":"#NUM!"},{"$error":"#NUM!"},{"$error":"#NUM!"},{"$error":"#NUM!"},88,0,0,0,0,88,{"$error":"#NUM!"},{"$error":"#NUM!"},{"$error":"#NUM!"}]
[89,{"$error":"#NUM!"},{"$error":"#NUM!"},{"$error":"#NUM!"},{"$error":"#NUM!"},89,0,0,0,0,89,{"$error":"#NUM!"},{"$error":"#NUM!"},{"$error":"#NUM!"}]
[90,{"$error":"#NUM!"},{"$error":"#NUM!"},{"$error":"#NUM!"},{"$error":"#NUM!"},90,0,0,0,0,90,{"$error":"#NUM!"},{"$error":"#NUM!"},{"$error":"#NUM!"}]
[91,{"$error":"#NUM!"},{"$error":"#NUM!"},{"$error":"#NUM!"},{"$error":"#NUM!"},91,0,0,0,0,91,{"$error":"#NUM!"},{"$error":"#NUM!"},{"$error":"#NUM!"}]
[92,{"$error":"#NUM!"},{"$error":"#NUM!"},{"$error":"#NUM!"},{"$error":"#NUM!"},92,0,0,0,0,92,{"$error":"#NUM!"},{"$error":"#NUM!"},{"$error":"#NUM!"}]
[93,{"$error":"#NUM!"},{"$error":"#NUM!"},{"$error":"#NUM!"},{"$error":"#NUM!"},93,0,0,0,0,93,{"$error":"#NUM!"},{"$error":"#NUM!"},{"$error":"#NUM!"}]
[94,{"$error":"#NUM!"},{"$error":"#NUM!"},{"$error":"#NUM!"},{"$error":"#NUM!"},94,0,0,0,0,94,{"$error":"#NUM!"},{"$error":"#NUM!"},{"$error":"#NUM!"}]
[95,{"$error":"#NUM!"},{"$error":"#NUM!"},{"$error":"#NUM!"},{"$error":"#NUM!"},95,0,0,0,0,95,{"$error":"#NUM!"},{"$error":"#NUM!"},{"$error":"#NUM!"}]
[96,{"$error":"#NUM!"},{"$error":"#NUM!"},{"$error":"#NUM!"},{"$error":"#NUM!"},96,0,0,0,0,96,{"$error":"#NUM!"},{"$error":"#NUM!"},{"$error":"#NUM!"}]
[97,{"$error":"#NUM!"},{"$error":"#NUM!"},{"$error":"#NUM!"},{"$error":"#NUM!"},97,0,0,0,0,97,{"$error":"#NUM!"},{"$error":"#NUM!"},{"$error":"#NUM!"}]
[98,{"$error":"#NUM!"},{"$error":"#NUM!"},{"$error":"#NUM!"},{"$error":"#NUM!"},98,0,0,0,0,98,{"$error":"#NUM!"},{"$error":"#NUM!"},{"$error":"#NUM!"}]
[99,{"$error":"#NUM!"},{"$error":"#NUM!"},{"$error":"#NUM!"},{"$error":"#NUM!"},99,0,0,0,0,99,{"$error":"#NUM!"},{"$error":"#NUM!"},{"$error":"#NUM!"}]
[100,{"$error":"#NUM!"},{"$error":"#NUM!"},{"$error":"#NUM!"},{"$error":"#NUM!"},100,0,0,0,0,100,{"$error":"#NUM!"},{"$error":"#NUM!"},{"$error":"#NUM!"}]
[101,{"$error":"#NUM!"},{"$error":"#NUM!"},{"$error":"#NUM!"},{"$error":"#NUM!"},101,0,0,0,0,101,{"$error":"#NUM!"},{"$error":"#NUM!"},{"$error":"#NUM!"}]
[102,{"$error":"#NUM!"},{"$error":"#NUM!"},{"$error":"#NUM!"},{"$error":"#NUM!"},102,0,0,0,0,102,{"$error":"#NUM!"},{"$error":"#NUM!"},{"$error":"#NUM!"}]
[103,{"$error":"#NUM!"},{"$error":"#NUM!"},{"$error":"#NUM!"},{"$error":"#NUM!"},103,0,0,0,0,103,{"$error":"#NUM!"},{"$error":"#NUM!"},{"$error":"#NUM!"}]
[104,{"$error":"#NUM!"},{"$error":"#NUM!"},{"$error":"#NUM!"},{"$error":"#NUM!"},104,0,0,0,0,104,{"$error":"#NUM!"},{"$error":"#NUM!"},{"$error":"#NUM!"}]
[105,{"$error":"#NUM!"},{"$error":"#NUM!"},{"$error":"#NUM!"},{"$error":"#NUM!"},105,0,0,0,0,105,{"$error":"#NUM!"},{"$error":"#NUM!"},{"$error":"#NUM!"}]
[106,{"$error":"#NUM!"},{"$error":"#NUM!"},{"$error":"#NUM!"},{"$error":"#NUM!"},106,0,0,0,0,106,{"$error":"#NUM!"},{"$error":"#NUM!"},{"$error":"#NUM!"}]
[107,{"$error":"#NUM!"},{"$error":"#NUM!"},{"$error":"#NUM!"},{"$error":"#NUM!"},107,0,0,0,0,107,{"$error":"#NUM!"},{"$error":"#NUM!"},{"$error":"#NUM!"}]
[108,{"$error":"#NUM!"},{"$error":"#NUM!"},{"$error":"#NUM!"},{"$error":"#NUM!"},108,0,0,0,0,108,{"$error":"#NUM!"},{"$error":"#NUM!"},{"$error":"#NUM!"}]
[109,{"$error":"#NUM!"},{"$error":"#NUM!"},{"$error":"#NUM!"},{"$error":"#NUM!"},109,0,0,0,0,109,{"$error":"#NUM!"},{"$error":"#NUM!"},{"$error":"#NUM!"}]
[110,{"$error":"#NUM!"},{"$error":"#NUM!"},{"$error":"#NUM!"},{"$error":"#NUM!"},110,0,0,0,0,110,{"$error":"#NUM!"},{"$error":"#NUM!"},{"$error":"#NUM!"}]
[111,{"$error":"#NUM!"},{"$error":"#NUM!"},{"$error":"#NUM!"},{"$error":"#NUM!"},111,0,0,0,0,111,{"$error":"#NUM!"},{"$error":"#NUM!"},{"$error":"#NUM!"}]
[112,{"$error":"#NUM!"},{"$error":"#NUM!"},{"$error":"#NUM!"},{"$error":"#NUM!"},112,0,0,0,0,112,{"$error":"#NUM!"},{"$error":"#NUM!"},{"$error":"#NUM!"}]
[113,{"$error":"#NUM!"},{"$error":"#NUM!"},{"$error":"#NUM!"},{"$error":"#NUM!"},113,0,0,0,0,113,{"$error":"#NUM!"},{"$error":"#NUM!"},{"$error":"#NUM!"}]
[114,{"$error":"#NUM!"},{"$error":"#NUM!"},{"$error":"#NUM!"},{"$error":"#NUM!"},114,0,0,0,0,114,{"$error":"#NUM!"},{"$error":"#NUM!"},{"$error":"#NUM!"}]
[115,{"$error":"#NUM!"},{"$error":"#NUM!"},{"$error":"#NUM!"},{"$error":"#NUM!"},115,0,0,0,0,115,{"$error":"#NUM!"},{"$error":"#NUM!"},{"$error":"#NUM!"}]
[116,{"$error":"#NUM!"},{"$error":"#NUM!"},{"$error":"#NUM!"},{"$error":"#NUM!"},116,0,0,0,0,116,{"$error":"#NUM!"},{"$error":"#NUM!"},{"$error":"#NUM!"}]
[117,{"$error":"#NUM!"},{"$error":"#NUM!"},{"$error":"#NUM!"},{"$error":"#NUM!"},117,0,0,0,0,117,{"$error":"#NUM!"},{"$error":"#NUM!"},{"$error":"#NUM!"}]
[118,{"$error":"#NUM!"},{"$error":"#NUM!"},{"$error":"#NUM!"},{"$error":"#NUM!"},118,0,0,0,0,118,{"$error":"#NUM!"},{"$error":"#NUM!"},{"$error":"#NUM!"}]
[119,{"$error":"#NUM!"},{"$error":"#NUM!"},{"$error":"#NUM!"},{"$error":"#NUM!"},119,0,0,0,0,119,{"$error":"#NUM!"},{"$error":"#NUM!"},{"$error":"#NUM!"}]
[120,{"$error":"#NUM!"},{"$error":"#NUM!"},{"$error":"#NUM!"},{"$error":"#NUM!"},120,0,0,0,0,120,{"$error":"#NUM!"},{"$error":"#NUM!"},{"$error":"#NUM!"}]
[121,{"$error":"#NUM!"},{"$error":"#NUM!"},{"$error":"#NUM!"},{"$error":"#NUM!"},121,0,0,0,0,121,{"$error":"#NUM!"},{"$error":"#NUM!"},{"$error":"#NUM!"}]
[122,{"$error":"#NUM!"},{"$error":"#NUM!"},{"$error":"#NUM!"},{"$error":"#NUM!"},122,0,0,0,0,122,{"$error":"#NUM!"},{"$error":"#NUM!"},{"$error":"#NUM!"}]
[123,{"$error":"#NUM!"},{"$error":"#NUM!"},{"$error":"#NUM!"},{"$error":"#NUM!"},123,0,0,0,0,123,{"$error":"#NUM!"},{"$error":"#NUM!"},{"$error":"#NUM!"}]
[124,{"$error":"#NUM!"},{"$error":"#NUM!"},{"$error":"#NUM!"},{"$error":"#NUM!"},124,0,0,0,0,124,{"$error":"#NUM!"},{"$error":"#NUM!"},{"$error":"#NUM!"}]
[125,{"$error":"#NUM!"},{"$error":"#NUM!"},{"$error":"#NUM!"},{"$error":"#NUM!"},125,0,0,0,0,125,{"$error":"#NUM!"},{"$error":"#NUM!"},{"$error":"#NUM!"}]
[126,{"$error":"#NUM!"},{"$error":"#NUM!"},{"$error":"#NUM!"},{"$error":"#NUM!"},126,0,0,0,0,126,{"$error":"#NUM!"},{"$error":"#NUM!"},{"$error":"#NUM!"}]
[127,{"$error":"#NUM!"},{"$error":"#NUM!"},{"$error":"#NUM!"},{"$error":"#NUM!"},127,0,0,0,0,127,{"$error":"#NUM!"},{"$error":"#NUM!"},{"$error":"#NUM!"}]
[128,{"$error":"#NUM!"},{"$error":"#NUM!"},{"$error":"#NUM!"},{"$error":"#NUM!"},128,0,0,0,0,128,{"$error":"#NUM!"},{"$error":"#NUM!"},{"$f":"J279+E279","v":{"$error":"#NUM!"}}]
[129,{"$f":"B279-E280","v":{"$error":"#NUM!"}},{"$error":"#NUM!"},{"$error":"#NUM!"},{"$f":"C280-D280","v":{"$error":"#NUM!"}},129,{"$f":"G279-J280","v":0},0,0,{"$f":"H280-I280","v":0},129,{"$f":"G280+B280","v":{"$error":"#NUM!"}},{"$error":"#NUM!"},{"$error":"#NUM!"}]
[{"$f":"A280+1","v":130},{"$error":"#NUM!"},{"$f":"-$H$62/12","v":{"$error":"#NUM!"}},{"$f":"$H$60/12*B280","v":{"$error":"#NUM!"}},{"$error":"#NUM!"},{"$f":"F280+1","v":130},0,{"$f":"-$H$69/12","v":0},{"$f":"$H$67/12*G280","v":0},0,{"$f":"K280+1","v":130},{"$error":"#NUM!"},{"$error":"#NUM!"},{"$error":"#NUM!"}]
[131,{"$error":"#NUM!"},{"$error":"#NUM!"},{"$error":"#NUM!"},{"$error":"#NUM!"},131,0,0,0,0,131,{"$error":"#NUM!"},{"$error":"#NUM!"},{"$error":"#NUM!"}]
[132,{"$error":"#NUM!"},{"$error":"#NUM!"},{"$error":"#NUM!"},{"$error":"#NUM!"},132,0,0,0,0,132,{"$error":"#NUM!"},{"$error":"#NUM!"},{"$error":"#NUM!"}]
[133,{"$error":"#NUM!"},{"$error":"#NUM!"},{"$error":"#NUM!"},{"$error":"#NUM!"},133,0,0,0,0,133,{"$error":"#NUM!"},{"$error":"#NUM!"},{"$error":"#NUM!"}]
[134,{"$error":"#NUM!"},{"$error":"#NUM!"},{"$error":"#NUM!"},{"$error":"#NUM!"},134,0,0,0,0,134,{"$error":"#NUM!"},{"$error":"#NUM!"},{"$error":"#NUM!"}]
[135,{"$error":"#NUM!"},{"$error":"#NUM!"},{"$error":"#NUM!"},{"$error":"#NUM!"},135,0,0,0,0,135,{"$error":"#NUM!"},{"$error":"#NUM!"},{"$error":"#NUM!"}]
[136,{"$error":"#NUM!"},{"$error":"#NUM!"},{"$error":"#NUM!"},{"$error":"#NUM!"},136,0,0,0,0,136,{"$error":"#NUM!"},{"$error":"#NUM!"},{"$error":"#NUM!"}]
[137,{"$error":"#NUM!"},{"$error":"#NUM!"},{"$error":"#NUM!"},{"$error":"#NUM!"},137,0,0,0,0,137,{"$error":"#NUM!"},{"$error":"#NUM!"},{"$error":"#NUM!"}]
[138,{"$error":"#NUM!"},{"$error":"#NUM!"},{"$error":"#NUM!"},{"$error":"#NUM!"},138,0,0,0,0,138,{"$error":"#NUM!"},{"$error":"#NUM!"},{"$error":"#NUM!"}]
[139,{"$error":"#NUM!"},{"$error":"#NUM!"},{"$error":"#NUM!"},{"$error":"#NUM!"},139,0,0,0,0,139,{"$error":"#NUM!"},{"$error":"#NUM!"},{"$error":"#NUM!"}]
[140,{"$error":"#NUM!"},{"$error":"#NUM!"},{"$error":"#NUM!"},{"$error":"#NUM!"},140,0,0,0,0,140,{"$error":"#NUM!"},{"$error":"#NUM!"},{"$error":"#NUM!"}]
[141,{"$error":"#NUM!"},{"$error":"#NUM!"},{"$error":"#NUM!"},{"$error":"#NUM!"},141,0,0,0,0,141,{"$error":"#NUM!"},{"$error":"#NUM!"},{"$error":"#NUM!"}]
[142,{"$error":"#NUM!"},{"$error":"#NUM!"},{"$error":"#NUM!"},{"$error":"#NUM!"},142,0,0,0,0,142,{"$error":"#NUM!"},{"$error":"#NUM!"},{"$error":"#NUM!"}]
[143,{"$error":"#NUM!"},{"$error":"#NUM!"},{"$error":"#NUM!"},{"$error":"#NUM!"},143,0,0,0,0,143,{"$error":"#NUM!"},{"$error":"#NUM!"},{"$error":"#NUM!"}]
[144,{"$error":"#NUM!"},{"$error":"#NUM!"},{"$error":"#NUM!"},{"$error":"#NUM!"},144,0,0,0,0,144,{"$error":"#NUM!"},{"$error":"#NUM!"},{"$error":"#NUM!"}]
[145,{"$error":"#NUM!"},{"$error":"#NUM!"},{"$error":"#NUM!"},{"$error":"#NUM!"},145,0,0,0,0,145,{"$error":"#NUM!"},{"$error":"#NUM!"},{"$error":"#NUM!"}]
[146,{"$error":"#NUM!"},{"$error":"#NUM!"},{"$error":"#NUM!"},{"$error":"#NUM!"},146,0,0,0,0,146,{"$error":"#NUM!"},{"$error":"#NUM!"},{"$error":"#NUM!"}]
[147,{"$error":"#NUM!"},{"$error":"#NUM!"},{"$error":"#NUM!"},{"$error":"#NUM!"},147,0,0,0,0,147,{"$error":"#NUM!"},{"$error":"#NUM!"},{"$error":"#NUM!"}]
[148,{"$error":"#NUM!"},{"$error":"#NUM!"},{"$error":"#NUM!"},{"$error":"#NUM!"},148,0,0,0,0,148,{"$error":"#NUM!"},{"$error":"#NUM!"},{"$error":"#NUM!"}]
[149,{"$error":"#NUM!"},{"$error":"#NUM!"},{"$error":"#NUM!"},{"$error":"#NUM!"},149,0,0,0,0,149,{"$error":"#NUM!"},{"$error":"#NUM!"},{"$error":"#NUM!"}]
[150,{"$error":"#NUM!"},{"$error":"#NUM!"},{"$error":"#NUM!"},{"$error":"#NUM!"},150,0,0,0,0,150,{"$error":"#NUM!"},{"$error":"#NUM!"},{"$error":"#NUM!"}]
[151,{"$error":"#NUM!"},{"$error":"#NUM!"},{"$error":"#NUM!"},{"$error":"#NUM!"},151,0,0,0,0,151,{"$error":"#NUM!"},{"$error":"#NUM!"},{"$error":"#NUM!"}]
[152,{"$error":"#NUM!"},{"$error":"#NUM!"},{"$error":"#NUM!"},{"$error":"#NUM!"},152,0,0,0,0,152,{"$error":"#NUM!"},{"$error":"#NUM!"},{"$error":"#NUM!"}]
[153,{"$error":"#NUM!"},{"$error":"#NUM!"},{"$error":"#NUM!"},{"$error":"#NUM!"},153,0,0,0,0,153,{"$error":"#NUM!"},{"$error":"#NUM!"},{"$error":"#NUM!"}]
[154,{"$error":"#NUM!"},{"$error":"#NUM!"},{"$error":"#NUM!"},{"$error":"#NUM!"},154,0,0,0,0,154,{"$error":"#NUM!"},{"$error":"#NUM!"},{"$error":"#NUM!"}]
[155,{"$error":"#NUM!"},{"$error":"#NUM!"},{"$error":"#NUM!"},{"$error":"#NUM!"},155,0,0,0,0,155,{"$error":"#NUM!"},{"$error":"#NUM!"},{"$error":"#NUM!"}]
[156,{"$error":"#NUM!"},{"$error":"#NUM!"},{"$error":"#NUM!"},{"$error":"#NUM!"},156,0,0,0,0,156,{"$error":"#NUM!"},{"$error":"#NUM!"},{"$error":"#NUM!"}]
[157,{"$error":"#NUM!"},{"$error":"#NUM!"},{"$error":"#NUM!"},{"$error":"#NUM!"},157,0,0,0,0,157,{"$error":"#NUM!"},{"$error":"#NUM!"},{"$error":"#NUM!"}]
[158,{"$error":"#NUM!"},{"$error":"#NUM!"},{"$error":"#NUM!"},{"$error":"#NUM!"},158,0,0,0,0,158,{"$error":"#NUM!"},{"$error":"#NUM!"},{"$error":"#NUM!"}]
[159,{"$error":"#NUM!"},{"$error":"#NUM!"},{"$error":"#NUM!"},{"$error":"#NUM!"},159,0,0,0,0,159,{"$error":"#NUM!"},{"$error":"#NUM!"},{"$error":"#NUM!"}]
[160,{"$error":"#NUM!"},{"$error":"#NUM!"},{"$error":"#NUM!"},{"$error":"#NUM!"},160,0,0,0,0,160,{"$error":"#NUM!"},{"$error":"#NUM!"},{"$f":"J311+E311","v":{"$error":"#NUM!"}}]
[161,{"$error":"#NUM!"},{"$error":"#NUM!"},{"$error":"#NUM!"},{"$error":"#NUM!"},161,0,0,0,0,161,{"$error":"#NUM!"},{"$error":"#NUM!"},{"$error":"#NUM!"}]
[162,{"$error":"#NUM!"},{"$error":"#NUM!"},{"$error":"#NUM!"},{"$error":"#NUM!"},162,0,0,0,0,162,{"$error":"#NUM!"},{"$error":"#NUM!"},{"$error":"#NUM!"}]
[163,{"$error":"#NUM!"},{"$error":"#NUM!"},{"$error":"#NUM!"},{"$error":"#NUM!"},163,0,0,0,0,163,{"$error":"#NUM!"},{"$error":"#NUM!"},{"$error":"#NUM!"}]
[164,{"$error":"#NUM!"},{"$error":"#NUM!"},{"$error":"#NUM!"},{"$error":"#NUM!"},164,0,0,0,0,164,{"$error":"#NUM!"},{"$error":"#NUM!"},{"$error":"#NUM!"}]
[165,{"$error":"#NUM!"},{"$error":"#NUM!"},{"$error":"#NUM!"},{"$error":"#NUM!"},165,0,0,0,0,165,{"$error":"#NUM!"},{"$error":"#NUM!"},{"$error":"#NUM!"}]
[166,{"$error":"#NUM!"},{"$error":"#NUM!"},{"$error":"#NUM!"},{"$error":"#NUM!"},166,0,0,0,0,166,{"$error":"#NUM!"},{"$error":"#NUM!"},{"$error":"#NUM!"}]
[167,{"$error":"#NUM!"},{"$error":"#NUM!"},{"$error":"#NUM!"},{"$error":"#NUM!"},167,0,0,0,0,167,{"$error":"#NUM!"},{"$error":"#NUM!"},{"$error":"#NUM!"}]
[168,{"$error":"#NUM!"},{"$error":"#NUM!"},{"$error":"#NUM!"},{"$error":"#NUM!"},168,0,0,0,0,168,{"$error":"#NUM!"},{"$error":"#NUM!"},{"$error":"#NUM!"}]
[169,{"$error":"#NUM!"},{"$error":"#NUM!"},{"$error":"#NUM!"},{"$error":"#NUM!"},169,0,0,0,0,169,{"$error":"#NUM!"},{"$error":"#NUM!"},{"$error":"#NUM!"}]
[170,{"$error":"#NUM!"},{"$error":"#NUM!"},{"$error":"#NUM!"},{"$error":"#NUM!"},170,0,0,0,0,170,{"$error":"#NUM!"},{"$error":"#NUM!"},{"$error":"#NUM!"}]
[171,{"$error":"#NUM!"},{"$error":"#NUM!"},{"$error":"#NUM!"},{"$error":"#NUM!"},171,0,0,0,0,171,{"$error":"#NUM!"},{"$error":"#NUM!"},{"$error":"#NUM!"}]
[172,{"$error":"#NUM!"},{"$error":"#NUM!"},{"$error":"#NUM!"},{"$error":"#NUM!"},172,0,0,0,0,172,{"$error":"#NUM!"},{"$error":"#NUM!"},{"$error":"#NUM!"}]
[173,{"$error":"#NUM!"},{"$error":"#NUM!"},{"$error":"#NUM!"},{"$error":"#NUM!"},173,0,0,0,0,173,{"$error":"#NUM!"},{"$error":"#NUM!"},{"$error":"#NUM!"}]
[174,{"$error":"#NUM!"},{"$error":"#NUM!"},{"$error":"#NUM!"},{"$error":"#NUM!"},174,0,0,0,0,174,{"$error":"#NUM!"},{"$error":"#NUM!"},{"$error":"#NUM!"}]
[175,{"$error":"#NUM!"},{"$error":"#NUM!"},{"$error":"#NUM!"},{"$error":"#NUM!"},175,0,0,0,0,175,{"$error":"#NUM!"},{"$error":"#NUM!"},{"$error":"#NUM!"}]
[176,{"$error":"#NUM!"},{"$error":"#NUM!"},{"$error":"#NUM!"},{"$error":"#NUM!"},176,0,0,0,0,176,{"$error":"#NUM!"},{"$error":"#NUM!"},{"$error":"#NUM!"}]
[177,{"$error":"#NUM!"},{"$error":"#NUM!"},{"$error":"#NUM!"},{"$error":"#NUM!"},177,0,0,0,0,177,{"$error":"#NUM!"},{"$error":"#NUM!"},{"$error":"#NUM!"}]
[178,{"$error":"#NUM!"},{"$error":"#NUM!"},{"$error":"#NUM!"},{"$error":"#NUM!"},178,0,0,0,0,178,{"$error":"#NUM!"},{"$error":"#NUM!"},{"$error":"#NUM!"}]
[179,{"$error":"#NUM!"},{"$error":"#NUM!"},{"$error":"#NUM!"},{"$error":"#NUM!"},179,0,0,0,0,179,{"$error":"#NUM!"},{"$error":"#NUM!"},{"$error":"#NUM!"}]
[180,{"$error":"#NUM!"},{"$error":"#NUM!"},{"$error":"#NUM!"},{"$error":"#NUM!"},180,0,0,0,0,180,{"$error":"#NUM!"},{"$error":"#NUM!"},{"$error":"#NUM!"}]
[181,{"$error":"#NUM!"},{"$error":"#NUM!"},{"$error":"#NUM!"},{"$error":"#NUM!"},181,0,0,0,0,181,{"$error":"#NUM!"},{"$error":"#NUM!"},{"$error":"#NUM!"}]
[182,{"$error":"#NUM!"},{"$error":"#NUM!"},{"$error":"#NUM!"},{"$error":"#NUM!"},182,0,0,0,0,182,{"$error":"#NUM!"},{"$error":"#NUM!"},{"$error":"#NUM!"}]
[183,{"$error":"#NUM!"},{"$error":"#NUM!"},{"$error":"#NUM!"},{"$error":"#NUM!"},183,0,0,0,0,183,{"$error":"#NUM!"},{"$error":"#NUM!"},{"$error":"#NUM!"}]
[184,{"$error":"#NUM!"},{"$error":"#NUM!"},{"$error":"#NUM!"},{"$error":"#NUM!"},184,0,0,0,0,184,{"$error":"#NUM!"},{"$error":"#NUM!"},{"$error":"#NUM!"}]
[185,{"$error":"#NUM!"},{"$error":"#NUM!"},{"$error":"#NUM!"},{"$error":"#NUM!"},185,0,0,0,0,185,{"$error":"#NUM!"},{"$error":"#NUM!"},{"$error":"#NUM!"}]
[186,{"$error":"#NUM!"},{"$error":"#NUM!"},{"$error":"#NUM!"},{"$error":"#NUM!"},186,0,0,0,0,186,{"$error":"#NUM!"},{"$error":"#NUM!"},{"$error":"#NUM!"}]
[187,{"$error":"#NUM!"},{"$error":"#NUM!"},{"$error":"#NUM!"},{"$error":"#NUM!"},187,0,0,0,0,187,{"$error":"#NUM!"},{"$error":"#NUM!"},{"$error":"#NUM!"}]
[188,{"$error":"#NUM!"},{"$error":"#NUM!"},{"$error":"#NUM!"},{"$error":"#NUM!"},188,0,0,0,0,188,{"$error":"#NUM!"},{"$error":"#NUM!"},{"$error":"#NUM!"}]
[189,{"$error":"#NUM!"},{"$error":"#NUM!"},{"$error":"#NUM!"},{"$error":"#NUM!"},189,0,0,0,0,189,{"$error":"#NUM!"},{"$error":"#NUM!"},{"$error":"#NUM!"}]
[190,{"$error":"#NUM!"},{"$error":"#NUM!"},{"$error":"#NUM!"},{"$error":"#NUM!"},190,0,0,0,0,190,{"$error":"#NUM!"},{"$error":"#NUM!"},{"$error":"#NUM!"}]
[191,{"$error":"#NUM!"},{"$error":"#NUM!"},{"$error":"#NUM!"},{"$error":"#NUM!"},191,0,0,0,0,191,{"$error":"#NUM!"},{"$error":"#NUM!"},{"$error":"#NUM!"}]
[192,{"$error":"#NUM!"},{"$error":"#NUM!"},{"$error":"#NUM!"},{"$error":"#NUM!"},192,0,0,0,0,192,{"$error":"#NUM!"},{"$error":"#NUM!"},{"$f":"J343+E343","v":{"$error":"#NUM!"}}]
[193,{"$f":"B343-E344","v":{"$error":"#NUM!"}},{"$error":"#NUM!"},{"$error":"#NUM!"},{"$f":"C344-D344","v":{"$error":"#NUM!"}},193,{"$f":"G343-J344","v":0},0,0,{"$f":"H344-I344","v":0},193,{"$f":"G344+B344","v":{"$error":"#NUM!"}},{"$error":"#NUM!"},{"$error":"#NUM!"}]
[{"$f":"A344+1","v":194},{"$error":"#NUM!"},{"$f":"-$H$62/12","v":{"$error":"#NUM!"}},{"$f":"$H$60/12*B344","v":{"$error":"#NUM!"}},{"$error":"#NUM!"},{"$f":"F344+1","v":194},0,{"$f":"-$H$69/12","v":0},{"$f":"$H$67/12*G344","v":0},0,{"$f":"K344+1","v":194},{"$error":"#NUM!"},{"$error":"#NUM!"},{"$error":"#NUM!"}]
[195,{"$error":"#NUM!"},{"$error":"#NUM!"},{"$error":"#NUM!"},{"$error":"#NUM!"},195,0,0,0,0,195,{"$error":"#NUM!"},{"$error":"#NUM!"},{"$error":"#NUM!"}]
[196,{"$error":"#NUM!"},{"$error":"#NUM!"},{"$error":"#NUM!"},{"$error":"#NUM!"},196,0,0,0,0,196,{"$error":"#NUM!"},{"$error":"#NUM!"},{"$error":"#NUM!"}]
[197,{"$error":"#NUM!"},{"$error":"#NUM!"},{"$error":"#NUM!"},{"$error":"#NUM!"},197,0,0,0,0,197,{"$error":"#NUM!"},{"$error":"#NUM!"},{"$error":"#NUM!"}]
[198,{"$error":"#NUM!"},{"$error":"#NUM!"},{"$error":"#NUM!"},{"$error":"#NUM!"},198,0,0,0,0,198,{"$error":"#NUM!"},{"$error":"#NUM!"},{"$error":"#NUM!"}]
[199,{"$error":"#NUM!"},{"$error":"#NUM!"},{"$error":"#NUM!"},{"$error":"#NUM!"},199,0,0,0,0,199,{"$error":"#NUM!"},{"$error":"#NUM!"},{"$error":"#NUM!"}]
[200,{"$error":"#NUM!"},{"$error":"#NUM!"},{"$error":"#NUM!"},{"$error":"#NUM!"},200,0,0,0,0,200,{"$error":"#NUM!"},{"$error":"#NUM!"},{"$error":"#NUM!"}]
[201,{"$error":"#NUM!"},{"$error":"#NUM!"},{"$error":"#NUM!"},{"$error":"#NUM!"},201,0,0,0,0,201,{"$error":"#NUM!"},{"$error":"#NUM!"},{"$error":"#NUM!"}]
[202,{"$error":"#NUM!"},{"$error":"#NUM!"},{"$error":"#NUM!"},{"$error":"#NUM!"},202,0,0,0,0,202,{"$error":"#NUM!"},{"$error":"#NUM!"},{"$error":"#NUM!"}]
[203,{"$error":"#NUM!"},{"$error":"#NUM!"},{"$error":"#NUM!"},{"$error":"#NUM!"},203,0,0,0,0,203,{"$error":"#NUM!"},{"$error":"#NUM!"},{"$error":"#NUM!"}]
[204,{"$error":"#NUM!"},{"$error":"#NUM!"},{"$error":"#NUM!"},{"$error":"#NUM!"},204,0,0,0,0,204,{"$error":"#NUM!"},{"$error":"#NUM!"},{"$error":"#NUM!"}]
[205,{"$error":"#NUM!"},{"$error":"#NUM!"},{"$error":"#NUM!"},{"$error":"#NUM!"},205,0,0,0,0,205,{"$error":"#NUM!"},{"$error":"#NUM!"},{"$error":"#NUM!"}]
[206,{"$error":"#NUM!"},{"$error":"#NUM!"},{"$error":"#NUM!"},{"$error":"#NUM!"},206,0,0,0,0,206,{"$error":"#NUM!"},{"$error":"#NUM!"},{"$error":"#NUM!"}]
[207,{"$error":"#NUM!"},{"$error":"#NUM!"},{"$error":"#NUM!"},{"$error":"#NUM!"},207,0,0,0,0,207,{"$error":"#NUM!"},{"$error":"#NUM!"},{"$error":"#NUM!"}]
[208,{"$error":"#NUM!"},{"$error":"#NUM!"},{"$error":"#NUM!"},{"$error":"#NUM!"},208,0,0,0,0,208,{"$error":"#NUM!"},{"$error":"#NUM!"},{"$error":"#NUM!"}]
[209,{"$error":"#NUM!"},{"$error":"#NUM!"},{"$error":"#NUM!"},{"$error":"#NUM!"},209,0,0,0,0,209,{"$error":"#NUM!"},{"$error":"#NUM!"},{"$error":"#NUM!"}]
[210,{"$error":"#NUM!"},{"$error":"#NUM!"},{"$error":"#NUM!"},{"$error":"#NUM!"},210,0,0,0,0,210,{"$error":"#NUM!"},{"$error":"#NUM!"},{"$error":"#NUM!"}]
[211,{"$error":"#NUM!"},{"$error":"#NUM!"},{"$error":"#NUM!"},{"$error":"#NUM!"},211,0,0,0,0,211,{"$error":"#NUM!"},{"$error":"#NUM!"},{"$error":"#NUM!"}]
[212,{"$error":"#NUM!"},{"$error":"#NUM!"},{"$error":"#NUM!"},{"$error":"#NUM!"},212,0,0,0,0,212,{"$error":"#NUM!"},{"$error":"#NUM!"},{"$error":"#NUM!"}]
[213,{"$error":"#NUM!"},{"$error":"#NUM!"},{"$error":"#NUM!"},{"$error":"#NUM!"},213,0,0,0,0,213,{"$error":"#NUM!"},{"$error":"#NUM!"},{"$error":"#NUM!"}]
[214,{"$error":"#NUM!"},{"$error":"#NUM!"},{"$error":"#NUM!"},{"$error":"#NUM!"},214,0,0,0,0,214,{"$error":"#NUM!"},{"$error":"#NUM!"},{"$error":"#NUM!"}]
[215,{"$error":"#NUM!"},{"$error":"#NUM!"},{"$error":"#NUM!"},{"$error":"#NUM!"},215,0,0,0,0,215,{"$error":"#NUM!"},{"$error":"#NUM!"},{"$error":"#NUM!"}]
[216,{"$error":"#NUM!"},{"$error":"#NUM!"},{"$error":"#NUM!"},{"$error":"#NUM!"},216,0,0,0,0,216,{"$error":"#NUM!"},{"$error":"#NUM!"},{"$error":"#NUM!"}]
[217,{"$error":"#NUM!"},{"$error":"#NUM!"},{"$error":"#NUM!"},{"$error":"#NUM!"},217,0,0,0,0,217,{"$error":"#NUM!"},{"$error":"#NUM!"},{"$error":"#NUM!"}]
[218,{"$error":"#NUM!"},{"$error":"#NUM!"},{"$error":"#NUM!"},{"$error":"#NUM!"},218,0,0,0,0,218,{"$error":"#NUM!"},{"$error":"#NUM!"},{"$error":"#NUM!"}]
[219,{"$error":"#NUM!"},{"$error":"#NUM!"},{"$error":"#NUM!"},{"$error":"#NUM!"},219,0,0,0,0,219,{"$error":"#NUM!"},{"$error":"#NUM!"},{"$error":"#NUM!"}]
[220,{"$error":"#NUM!"},{"$error":"#NUM!"},{"$error":"#NUM!"},{"$error":"#NUM!"},220,0,0,0,0,220,{"$error":"#NUM!"},{"$error":"#NUM!"},{"$error":"#NUM!"}]
[221,{"$error":"#NUM!"},{"$error":"#NUM!"},{"$error":"#NUM!"},{"$error":"#NUM!"},221,0,0,0,0,221,{"$error":"#NUM!"},{"$error":"#NUM!"},{"$error":"#NUM!"}]
[222,{"$error":"#NUM!"},{"$error":"#NUM!"},{"$error":"#NUM!"},{"$error":"#NUM!"},222,0,0,0,0,222,{"$error":"#NUM!"},{"$error":"#NUM!"},{"$error":"#NUM!"}]
[223,{"$error":"#NUM!"},{"$error":"#NUM!"},{"$error":"#NUM!"},{"$error":"#NUM!"},223,0,0,0,0,223,{"$error":"#NUM!"},{"$error":"#NUM!"},{"$error":"#NUM!"}]
[224,{"$error":"#NUM!"},{"$error":"#NUM!"},{"$error":"#NUM!"},{"$error":"#NUM!"},224,0,0,0,0,224,{"$error":"#NUM!"},{"$error":"#NUM!"},{"$error":"#NUM!"}]
[225,{"$error":"#NUM!"},{"$error":"#NUM!"},{"$error":"#NUM!"},{"$error":"#NUM!"},225,0,0,0,0,225,{"$error":"#NUM!"},{"$error":"#NUM!"},{"$error":"#NUM!"}]
[226,{"$error":"#NUM!"},{"$error":"#NUM!"},{"$error":"#NUM!"},{"$error":"#NUM!"},226,0,0,0,0,226,{"$error":"#NUM!"},{"$error":"#NUM!"},{"$error":"#NUM!"}]
[227,{"$error":"#NUM!"},{"$error":"#NUM!"},{"$error":"#NUM!"},{"$error":"#NUM!"},227,0,0,0,0,227,{"$error":"#NUM!"},{"$error":"#NUM!"},{"$error":"#NUM!"}]
[228,{"$error":"#NUM!"},{"$error":"#NUM!"},{"$error":"#NUM!"},{"$error":"#NUM!"},228,0,0,0,0,228,{"$error":"#NUM!"},{"$error":"#NUM!"},{"$error":"#NUM!"}]
[229,{"$error":"#NUM!"},{"$error":"#NUM!"},{"$error":"#NUM!"},{"$error":"#NUM!"},229,0,0,0,0,229,{"$error":"#NUM!"},{"$error":"#NUM!"},{"$error":"#NUM!"}]
[230,{"$error":"#NUM!"},{"$error":"#NUM!"},{"$error":"#NUM!"},{"$error":"#NUM!"},230,0,0,0,0,230,{"$error":"#NUM!"},{"$error":"#NUM!"},{"$error":"#NUM!"}]
[231,{"$error":"#NUM!"},{"$error":"#NUM!"},{"$error":"#NUM!"},{"$error":"#NUM!"},231,0,0,0,0,231,{"$error":"#NUM!"},{"$error":"#NUM!"},{"$error":"#NUM!"}]
[232,{"$error":"#NUM!"},{"$error":"#NUM!"},{"$error":"#NUM!"},{"$error":"#NUM!"},232,0,0,0,0,232,{"$error":"#NUM!"},{"$error":"#NUM!"},{"$error":"#NUM!"}]
[233,{"$error":"#NUM!"},{"$error":"#NUM!"},{"$error":"#NUM!"},{"$error":"#NUM!"},233,0,0,0,0,233,{"$error":"#NUM!"},{"$error":"#NUM!"},{"$error":"#NUM!"}]
[234,{"$error":"#NUM!"},{"$error":"#NUM!"},{"$error":"#NUM!"},{"$error":"#NUM!"},234,0,0,0,0,234,{"$error":"#NUM!"},{"$error":"#NUM!"},{"$error":"#NUM!"}]
[235,{"$error":"#NUM!"},{"$error":"#NUM!"},{"$error":"#NUM!"},{"$error":"#NUM!"},235,0,0,0,0,235,{"$error":"#NUM!"},{"$error":"#NUM!"},{"$error":"#NUM!"}]
[236,{"$error":"#NUM!"},{"$error":"#NUM!"},{"$error":"#NUM!"},{"$error":"#NUM!"},236,0,0,0,0,236,{"$error":"#NUM!"},{"$error":"#NUM!"},{"$error":"#NUM!"}]
[237,{"$error":"#NUM!"},{"$error":"#NUM!"},{"$error":"#NUM!"},{"$error":"#NUM!"},237,0,0,0,0,237,{"$error":"#NUM!"},{"$error":"#NUM!"},{"$error":"#NUM!"}]
[238,{"$error":"#NUM!"},{"$error":"#NUM!"},{"$error":"#NUM!"},{"$error":"#NUM!"},238,0,0,0,0,238,{"$error":"#NUM!"},{"$error":"#NUM!"},{"$error":"#NUM!"}]
[239,{"$error":"#NUM!"},{"$error":"#NUM!"},{"$error":"#NUM!"},{"$error":"#NUM!"},239,0,0,0,0,239,{"$error":"#NUM!"},{"$error":"#NUM!"},{"$error":"#NUM!"}]
[240,{"$error":"#NUM!"},{"$error":"#NUM!"},{"$error":"#NUM!"},{"$error":"#NUM!"},240,0,0,0,0,240,{"$error":"#NUM!"},{"$error":"#NUM!"},{"$error":"#NUM!"}]
[241,{"$error":"#NUM!"},{"$error":"#NUM!"},{"$error":"#NUM!"},{"$error":"#NUM!"},241,0,0,0,0,241,{"$error":"#NUM!"},{"$error":"#NUM!"},{"$error":"#NUM!"}]
[242,{"$error":"#NUM!"},{"$error":"#NUM!"},{"$error":"#NUM!"},{"$error":"#NUM!"},242,0,0,0,0,242,{"$error":"#NUM!"},{"$error":"#NUM!"},{"$error":"#NUM!"}]
[243,{"$error":"#NUM!"},{"$error":"#NUM!"},{"$error":"#NUM!"},{"$error":"#NUM!"},243,0,0,0,0,243,{"$error":"#NUM!"},{"$error":"#NUM!"},{"$error":"#NUM!"}]
[244,{"$error":"#NUM!"},{"$error":"#NUM!"},{"$error":"#NUM!"},{"$error":"#NUM!"},244,0,0,0,0,244,{"$error":"#NUM!"},{"$error":"#NUM!"},{"$error":"#NUM!"}]
[245,{"$error":"#NUM!"},{"$error":"#NUM!"},{"$error":"#NUM!"},{"$error":"#NUM!"},245,0,0,0,0,245,{"$error":"#NUM!"},{"$error":"#NUM!"},{"$error":"#NUM!"}]
[246,{"$error":"#NUM!"},{"$error":"#NUM!"},{"$error":"#NUM!"},{"$error":"#NUM!"},246,0,0,0,0,246,{"$error":"#NUM!"},{"$error":"#NUM!"},{"$error":"#NUM!"}]
[247,{"$error":"#NUM!"},{"$error":"#NUM!"},{"$error":"#NUM!"},{"$error":"#NUM!"},247,0,0,0,0,247,{"$error":"#NUM!"},{"$error":"#NUM!"},{"$error":"#NUM!"}]
[248,{"$error":"#NUM!"},{"$error":"#NUM!"},{"$error":"#NUM!"},{"$error":"#NUM!"},248,0,0,0,0,248,{"$error":"#NUM!"},{"$error":"#NUM!"},{"$error":"#NUM!"}]
[249,{"$error":"#NUM!"},{"$error":"#NUM!"},{"$error":"#NUM!"},{"$error":"#NUM!"},249,0,0,0,0,249,{"$error":"#NUM!"},{"$error":"#NUM!"},{"$error":"#NUM!"}]
[250,{"$error":"#NUM!"},{"$error":"#NUM!"},{"$error":"#NUM!"},{"$error":"#NUM!"},250,0,0,0,0,250,{"$error":"#NUM!"},{"$error":"#NUM!"},{"$error":"#NUM!"}]
[251,{"$error":"#NUM!"},{"$error":"#NUM!"},{"$error":"#NUM!"},{"$error":"#NUM!"},251,0,0,0,0,251,{"$error":"#NUM!"},{"$error":"#NUM!"},{"$error":"#NUM!"}]
[252,{"$error":"#NUM!"},{"$error":"#NUM!"},{"$error":"#NUM!"},{"$error":"#NUM!"},252,0,0,0,0,252,{"$error":"#NUM!"},{"$error":"#NUM!"},{"$error":"#NUM!"}]
[253,{"$error":"#NUM!"},{"$error":"#NUM!"},{"$error":"#NUM!"},{"$error":"#NUM!"},253,0,0,0,0,253,{"$error":"#NUM!"},{"$error":"#NUM!"},{"$error":"#NUM!"}]
[254,{"$error":"#NUM!"},{"$error":"#NUM!"},{"$error":"#NUM!"},{"$error":"#NUM!"},254,0,0,0,0,254,{"$error":"#NUM!"},{"$error":"#NUM!"},{"$error":"#NUM!"}]
[255,{"$error":"#NUM!"},{"$error":"#NUM!"},{"$error":"#NUM!"},{"$error":"#NUM!"},255,0,0,0,0,255,{"$error":"#NUM!"},{"$error":"#NUM!"},{"$error":"#NUM!"}]
[256,{"$error":"#NUM!"},{"$error":"#NUM!"},{"$error":"#NUM!"},{"$error":"#NUM!"},256,0,0,0,0,256,{"$error":"#NUM!"},{"$error":"#NUM!"},{"$f":"J407+E407","v":{"$error":"#NUM!"}}]
[257,{"$f":"B407-E408","v":{"$error":"#NUM!"}},{"$error":"#NUM!"},{"$error":"#NUM!"},{"$f":"C408-D408","v":{"$error":"#NUM!"}},257,{"$f":"G407-J408","v":0},0,0,{"$f":"H408-I408","v":0},257,{"$f":"G408+B408","v":{"$error":"#NUM!"}},{"$error":"#NUM!"},{"$error":"#NUM!"}]
[{"$f":"A408+1","v":258},{"$error":"#NUM!"},{"$f":"-$H$62/12","v":{"$error":"#NUM!"}},{"$f":"$H$60/12*B408","v":{"$error":"#NUM!"}},{"$error":"#NUM!"},{"$f":"F408+1","v":258},0,{"$f":"-$H$69/12","v":0},{"$f":"$H$67/12*G408","v":0},0,{"$f":"K408+1","v":258},{"$error":"#NUM!"},{"$error":"#NUM!"},{"$error":"#NUM!"}]
[259,{"$error":"#NUM!"},{"$error":"#NUM!"},{"$error":"#NUM!"},{"$error":"#NUM!"},259,0,0,0,0,259,{"$error":"#NUM!"},{"$error":"#NUM!"},{"$error":"#NUM!"}]
[260,{"$error":"#NUM!"},{"$error":"#NUM!"},{"$error":"#NUM!"},{"$error":"#NUM!"},260,0,0,0,0,260,{"$error":"#NUM!"},{"$error":"#NUM!"},{"$error":"#NUM!"}]
[261,{"$error":"#NUM!"},{"$error":"#NUM!"},{"$error":"#NUM!"},{"$error":"#NUM!"},261,0,0,0,0,261,{"$error":"#NUM!"},{"$error":"#NUM!"},{"$error":"#NUM!"}]
[262,{"$error":"#NUM!"},{"$error":"#NUM!"},{"$error":"#NUM!"},{"$error":"#NUM!"},262,0,0,0,0,262,{"$error":"#NUM!"},{"$error":"#NUM!"},{"$error":"#NUM!"}]
[263,{"$error":"#NUM!"},{"$error":"#NUM!"},{"$error":"#NUM!"},{"$error":"#NUM!"},263,0,0,0,0,263,{"$error":"#NUM!"},{"$error":"#NUM!"},{"$error":"#NUM!"}]
[264,{"$error":"#NUM!"},{"$error":"#NUM!"},{"$error":"#NUM!"},{"$error":"#NUM!"},264,0,0,0,0,264,{"$error":"#NUM!"},{"$error":"#NUM!"},{"$error":"#NUM!"}]
[265,{"$error":"#NUM!"},{"$error":"#NUM!"},{"$error":"#NUM!"},{"$error":"#NUM!"},265,0,0,0,0,265,{"$error":"#NUM!"},{"$error":"#NUM!"},{"$error":"#NUM!"}]
[266,{"$error":"#NUM!"},{"$error":"#NUM!"},{"$error":"#NUM!"},{"$error":"#NUM!"},266,0,0,0,0,266,{"$error":"#NUM!"},{"$error":"#NUM!"},{"$error":"#NUM!"}]
[267,{"$error":"#NUM!"},{"$error":"#NUM!"},{"$error":"#NUM!"},{"$error":"#NUM!"},267,0,0,0,0,267,{"$error":"#NUM!"},{"$error":"#NUM!"},{"$error":"#NUM!"}]
[268,{"$error":"#NUM!"},{"$error":"#NUM!"},{"$error":"#NUM!"},{"$error":"#NUM!"},268,0,0,0,0,268,{"$error":"#NUM!"},{"$error":"#NUM!"},{"$error":"#NUM!"}]
[269,{"$error":"#NUM!"},{"$error":"#NUM!"},{"$error":"#NUM!"},{"$error":"#NUM!"},269,0,0,0,0,269,{"$error":"#NUM!"},{"$error":"#NUM!"},{"$error":"#NUM!"}]
[270,{"$error":"#NUM!"},{"$error":"#NUM!"},{"$error":"#NUM!"},{"$error":"#NUM!"},270,0,0,0,0,270,{"$error":"#NUM!"},{"$error":"#NUM!"},{"$error":"#NUM!"}]
[271,{"$error":"#NUM!"},{"$error":"#NUM!"},{"$error":"#NUM!"},{"$error":"#NUM!"},271,0,0,0,0,271,{"$error":"#NUM!"},{"$error":"#NUM!"},{"$error":"#NUM!"}]
[272,{"$error":"#NUM!"},{"$error":"#NUM!"},{"$error":"#NUM!"},{"$error":"#NUM!"},272,0,0,0,0,272,{"$error":"#NUM!"},{"$error":"#NUM!"},{"$error":"#NUM!"}]
[273,{"$error":"#NUM!"},{"$error":"#NUM!"},{"$error":"#NUM!"},{"$error":"#NUM!"},273,0,0,0,0,273,{"$error":"#NUM!"},{"$error":"#NUM!"},{"$error":"#NUM!"}]
[274,{"$error":"#NUM!"},{"$error":"#NUM!"},{"$error":"#NUM!"},{"$error":"#NUM!"},274,0,0,0,0,274,{"$error":"#NUM!"},{"$error":"#NUM!"},{"$error":"#NUM!"}]
[275,{"$error":"#NUM!"},{"$error":"#NUM!"},{"$error":"#NUM!"},{"$error":"#NUM!"},275,0,0,0,0,275,{"$error":"#NUM!"},{"$error":"#NUM!"},{"$error":"#NUM!"}]
[276,{"$error":"#NUM!"},{"$error":"#NUM!"},{"$error":"#NUM!"},{"$error":"#NUM!"},276,0,0,0,0,276,{"$error":"#NUM!"},{"$error":"#NUM!"},{"$error":"#NUM!"}]
[277,{"$error":"#NUM!"},{"$error":"#NUM!"},{"$error":"#NUM!"},{"$error":"#NUM!"},277,0,0,0,0,277,{"$error":"#NUM!"},{"$error":"#NUM!"},{"$error":"#NUM!"}]
[278,{"$error":"#NUM!"},{"$error":"#NUM!"},{"$error":"#NUM!"},{"$error":"#NUM!"},278,0,0,0,0,278,{"$error":"#NUM!"},{"$error":"#NUM!"},{"$error":"#NUM!"}]
[279,{"$error":"#NUM!"},{"$error":"#NUM!"},{"$error":"#NUM!"},{"$error":"#NUM!"},279,0,0,0,0,279,{"$error":"#NUM!"},{"$error":"#NUM!"},{"$error":"#NUM!"}]
[280,{"$error":"#NUM!"},{"$error":"#NUM!"},{"$error":"#NUM!"},{"$error":"#NUM!"},280,0,0,0,0,280,{"$error":"#NUM!"},{"$error":"#NUM!"},{"$error":"#NUM!"}]
[281,{"$error":"#NUM!"},{"$error":"#NUM!"},{"$error":"#NUM!"},{"$error":"#NUM!"},281,0,0,0,0,281,{"$error":"#NUM!"},{"$error":"#NUM!"},{"$error":"#NUM!"}]
[282,{"$error":"#NUM!"},{"$error":"#NUM!"},{"$error":"#NUM!"},{"$error":"#NUM!"},282,0,0,0,0,282,{"$error":"#NUM!"},{"$error":"#NUM!"},{"$error":"#NUM!"}]
[283,{"$error":"#NUM!"},{"$error":"#NUM!"},{"$error":"#NUM!"},{"$error":"#NUM!"},283,0,0,0,0,283,{"$error":"#NUM!"},{"$error":"#NUM!"},{"$error":"#NUM!"}]
[284,{"$error":"#NUM!"},{"$error":"#NUM!"},{"$error":"#NUM!"},{"$error":"#NUM!"},284,0,0,0,0,284,{"$error":"#NUM!"},{"$error":"#NUM!"},{"$error":"#NUM!"}]
[285,{"$error":"#NUM!"},{"$error":"#NUM!"},{"$error":"#NUM!"},{"$error":"#NUM!"},285,0,0,0,0,285,{"$error":"#NUM!"},{"$error":"#NUM!"},{"$error":"#NUM!"}]
[286,{"$error":"#NUM!"},{"$error":"#NUM!"},{"$error":"#NUM!"},{"$error":"#NUM!"},286,0,0,0,0,286,{"$error":"#NUM!"},{"$error":"#NUM!"},{"$error":"#NUM!"}]
[287,{"$error":"#NUM!"},{"$error":"#NUM!"},{"$error":"#NUM!"},{"$error":"#NUM!"},287,0,0,0,0,287,{"$error":"#NUM!"},{"$error":"#NUM!"},{"$error":"#NUM!"}]
[288,{"$error":"#NUM!"},{"$error":"#NUM!"},{"$error":"#NUM!"},{"$error":"#NUM!"},288,0,0,0,0,288,{"$error":"#NUM!"},{"$error":"#NUM!"},{"$f":"J439+E439","v":{"$error":"#NUM!"}}]
[289,{"$error":"#NUM!"},{"$error":"#NUM!"},{"$error":"#NUM!"},{"$error":"#NUM!"},289,0,0,0,0,289,{"$error":"#NUM!"},{"$error":"#NUM!"},{"$error":"#NUM!"}]
[290,{"$error":"#NUM!"},{"$error":"#NUM!"},{"$error":"#NUM!"},{"$error":"#NUM!"},290,0,0,0,0,290,{"$error":"#NUM!"},{"$error":"#NUM!"},{"$error":"#NUM!"}]
[291,{"$error":"#NUM!"},{"$error":"#NUM!"},{"$error":"#NUM!"},{"$error":"#NUM!"},291,0,0,0,0,291,{"$error":"#NUM!"},{"$error":"#NUM!"},{"$error":"#NUM!"}]
[292,{"$error":"#NUM!"},{"$error":"#NUM!"},{"$error":"#NUM!"},{"$error":"#NUM!"},292,0,0,0,0,292,{"$error":"#NUM!"},{"$error":"#NUM!"},{"$error":"#NUM!"}]
[293,{"$error":"#NUM!"},{"$error":"#NUM!"},{"$error":"#NUM!"},{"$error":"#NUM!"},293,0,0,0,0,293,{"$error":"#NUM!"},{"$error":"#NUM!"},{"$error":"#NUM!"}]
[294,{"$error":"#NUM!"},{"$error":"#NUM!"},{"$error":"#NUM!"},{"$error":"#NUM!"},294,0,0,0,0,294,{"$error":"#NUM!"},{"$error":"#NUM!"},{"$error":"#NUM!"}]
[295,{"$error":"#NUM!"},{"$error":"#NUM!"},{"$error":"#NUM!"},{"$error":"#NUM!"},295,0,0,0,0,295,{"$error":"#NUM!"},{"$error":"#NUM!"},{"$error":"#NUM!"}]
[296,{"$error":"#NUM!"},{"$error":"#NUM!"},{"$error":"#NUM!"},{"$error":"#NUM!"},296,0,0,0,0,296,{"$error":"#NUM!"},{"$error":"#NUM!"},{"$error":"#NUM!"}]
[297,{"$error":"#NUM!"},{"$error":"#NUM!"},{"$error":"#NUM!"},{"$error":"#NUM!"},297,0,0,0,0,297,{"$error":"#NUM!"},{"$error":"#NUM!"},{"$error":"#NUM!"}]
[298,{"$error":"#NUM!"},{"$error":"#NUM!"},{"$error":"#NUM!"},{"$error":"#NUM!"},298,0,0,0,0,298,{"$error":"#NUM!"},{"$error":"#NUM!"},{"$error":"#NUM!"}]
[299,{"$error":"#NUM!"},{"$error":"#NUM!"},{"$error":"#NUM!"},{"$error":"#NUM!"},299,0,0,0,0,299,{"$error":"#NUM!"},{"$error":"#NUM!"},{"$error":"#NUM!"}]
[300,{"$error":"#NUM!"},{"$error":"#NUM!"},{"$error":"#NUM!"},{"$error":"#NUM!"},300,0,0,0,0,300,{"$error":"#NUM!"},{"$error":"#NUM!"},{"$error":"#NUM!"}]
[301,{"$error":"#NUM!"},{"$error":"#NUM!"},{"$error":"#NUM!"},{"$error":"#NUM!"},301,0,0,0,0,301,{"$error":"#NUM!"},{"$error":"#NUM!"},{"$error":"#NUM!"}]
[302,{"$error":"#NUM!"},{"$error":"#NUM!"},{"$error":"#NUM!"},{"$error":"#NUM!"},302,0,0,0,0,302,{"$error":"#NUM!"},{"$error":"#NUM!"},{"$error":"#NUM!"}]
[303,{"$error":"#NUM!"},{"$error":"#NUM!"},{"$error":"#NUM!"},{"$error":"#NUM!"},303,0,0,0,0,303,{"$error":"#NUM!"},{"$error":"#NUM!"},{"$error":"#NUM!"}]
[304,{"$error":"#NUM!"},{"$error":"#NUM!"},{"$error":"#NUM!"},{"$error":"#NUM!"},304,0,0,0,0,304,{"$error":"#NUM!"},{"$error":"#NUM!"},{"$error":"#NUM!"}]
[305,{"$error":"#NUM!"},{"$error":"#NUM!"},{"$error":"#NUM!"},{"$error":"#NUM!"},305,0,0,0,0,305,{"$error":"#NUM!"},{"$error":"#NUM!"},{"$error":"#NUM!"}]
[306,{"$error":"#NUM!"},{"$error":"#NUM!"},{"$error":"#NUM!"},{"$error":"#NUM!"},306,0,0,0,0,306,{"$error":"#NUM!"},{"$error":"#NUM!"},{"$error":"#NUM!"}]
[307,{"$error":"#NUM!"},{"$error":"#NUM!"},{"$error":"#NUM!"},{"$error":"#NUM!"},307,0,0,0,0,307,{"$error":"#NUM!"},{"$error":"#NUM!"},{"$error":"#NUM!"}]
[308,{"$error":"#NUM!"},{"$error":"#NUM!"},{"$error":"#NUM!"},{"$error":"#NUM!"},308,0,0,0,0,308,{"$error":"#NUM!"},{"$error":"#NUM!"},{"$error":"#NUM!"}]
[309,{"$error":"#NUM!"},{"$error":"#NUM!"},{"$error":"#NUM!"},{"$error":"#NUM!"},309,0,0,0,0,309,{"$error":"#NUM!"},{"$error":"#NUM!"},{"$error":"#NUM!"}]
[310,{"$error":"#NUM!"},{"$error":"#NUM!"},{"$error":"#NUM!"},{"$error":"#NUM!"},310,0,0,0,0,310,{"$error":"#NUM!"},{"$error":"#NUM!"},{"$error":"#NUM!"}]
[311,{"$error":"#NUM!"},{"$error":"#NUM!"},{"$error":"#NUM!"},{"$error":"#NUM!"},311,0,0,0,0,311,{"$error":"#NUM!"},{"$error":"#NUM!"},{"$error":"#NUM!"}]
[312,{"$error":"#NUM!"},{"$error":"#NUM!"},{"$error":"#NUM!"},{"$error":"#NUM!"},312,0,0,0,0,312,{"$error":"#NUM!"},{"$error":"#NUM!"},{"$error":"#NUM!"}]
[313,{"$error":"#NUM!"},{"$error":"#NUM!"},{"$error":"#NUM!"},{"$error":"#NUM!"},313,0,0,0,0,313,{"$error":"#NUM!"},{"$error":"#NUM!"},{"$error":"#NUM!"}]
[314,{"$error":"#NUM!"},{"$error":"#NUM!"},{"$error":"#NUM!"},{"$error":"#NUM!"},314,0,0,0,0,314,{"$error":"#NUM!"},{"$error":"#NUM!"},{"$error":"#NUM!"}]
[315,{"$error":"#NUM!"},{"$error":"#NUM!"},{"$error":"#NUM!"},{"$error":"#NUM!"},315,0,0,0,0,315,{"$error":"#NUM!"},{"$error":"#NUM!"},{"$error":"#NUM!"}]
[316,{"$error":"#NUM!"},{"$error":"#NUM!"},{"$error":"#NUM!"},{"$error":"#NUM!"},316,0,0,0,0,316,{"$error":"#NUM!"},{"$error":"#NUM!"},{"$error":"#NUM!"}]
[317,{"$error":"#NUM!"},{"$error":"#NUM!"},{"$error":"#NUM!"},{"$error":"#NUM!"},317,0,0,0,0,317,{"$error":"#NUM!"},{"$error":"#NUM!"},{"$error":"#NUM!"}]
[318,{"$error":"#NUM!"},{"$error":"#NUM!"},{"$error":"#NUM!"},{"$error":"#NUM!"},318,0,0,0,0,318,{"$error":"#NUM!"},{"$error":"#NUM!"},{"$error":"#NUM!"}]
[319,{"$error":"#NUM!"},{"$error":"#NUM!"},{"$error":"#NUM!"},{"$error":"#NUM!"},319,0,0,0,0,319,{"$error":"#NUM!"},{"$error":"#NUM!"},{"$error":"#NUM!"}]
[320,{"$error":"#NUM!"},{"$error":"#NUM!"},{"$error":"#NUM!"},{"$error":"#NUM!"},320,0,0,0,0,320,{"$error":"#NUM!"},{"$error":"#NUM!"},{"$f":"J471+E471","v":{"$error":"#NUM!"}}]
[321,{"$f":"B471-E472","v":{"$error":"#NUM!"}},{"$error":"#NUM!"},{"$error":"#NUM!"},{"$f":"C472-D472","v":{"$error":"#NUM!"}},321,{"$f":"G471-J472","v":0},0,0,{"$f":"H472-I472","v":0},321,{"$f":"G472+B472","v":{"$error":"#NUM!"}},{"$error":"#NUM!"},{"$error":"#NUM!"}]
[{"$f":"A472+1","v":322},{"$error":"#NUM!"},{"$f":"-$H$62/12","v":{"$error":"#NUM!"}},{"$f":"$H$60/12*B472","v":{"$error":"#NUM!"}},{"$error":"#NUM!"},{"$f":"F472+1","v":322},0,{"$f":"-$H$69/12","v":0},{"$f":"$H$67/12*G472","v":0},0,{"$f":"K472+1","v":322},{"$error":"#NUM!"},{"$error":"#NUM!"},{"$error":"#NUM!"}]
[323,{"$error":"#NUM!"},{"$error":"#NUM!"},{"$error":"#NUM!"},{"$error":"#NUM!"},323,0,0,0,0,323,{"$error":"#NUM!"},{"$error":"#NUM!"},{"$error":"#NUM!"}]
[324,{"$error":"#NUM!"},{"$error":"#NUM!"},{"$error":"#NUM!"},{"$error":"#NUM!"},324,0,0,0,0,324,{"$error":"#NUM!"},{"$error":"#NUM!"},{"$error":"#NUM!"}]
[325,{"$error":"#NUM!"},{"$error":"#NUM!"},{"$error":"#NUM!"},{"$error":"#NUM!"},325,0,0,0,0,325,{"$error":"#NUM!"},{"$error":"#NUM!"},{"$error":"#NUM!"}]
[326,{"$error":"#NUM!"},{"$error":"#NUM!"},{"$error":"#NUM!"},{"$error":"#NUM!"},326,0,0,0,0,326,{"$error":"#NUM!"},{"$error":"#NUM!"},{"$error":"#NUM!"}]
[327,{"$error":"#NUM!"},{"$error":"#NUM!"},{"$error":"#NUM!"},{"$error":"#NUM!"},327,0,0,0,0,327,{"$error":"#NUM!"},{"$error":"#NUM!"},{"$error":"#NUM!"}]
[328,{"$error":"#NUM!"},{"$error":"#NUM!"},{"$error":"#NUM!"},{"$error":"#NUM!"},328,0,0,0,0,328,{"$error":"#NUM!"},{"$error":"#NUM!"},{"$error":"#NUM!"}]
[329,{"$error":"#NUM!"},{"$error":"#NUM!"},{"$error":"#NUM!"},{"$error":"#NUM!"},329,0,0,0,0,329,{"$error":"#NUM!"},{"$error":"#NUM!"},{"$error":"#NUM!"}]
[330,{"$error":"#NUM!"},{"$error":"#NUM!"},{"$error":"#NUM!"},{"$error":"#NUM!"},330,0,0,0,0,330,{"$error":"#NUM!"},{"$error":"#NUM!"},{"$error":"#NUM!"}]
[331,{"$error":"#NUM!"},{"$error":"#NUM!"},{"$error":"#NUM!"},{"$error":"#NUM!"},331,0,0,0,0,331,{"$error":"#NUM!"},{"$error":"#NUM!"},{"$error":"#NUM!"}]
[332,{"$error":"#NUM!"},{"$error":"#NUM!"},{"$error":"#NUM!"},{"$error":"#NUM!"},332,0,0,0,0,332,{"$error":"#NUM!"},{"$error":"#NUM!"},{"$error":"#NUM!"}]
[333,{"$error":"#NUM!"},{"$error":"#NUM!"},{"$error":"#NUM!"},{"$error":"#NUM!"},333,0,0,0,0,333,{"$error":"#NUM!"},{"$error":"#NUM!"},{"$error":"#NUM!"}]
[334,{"$error":"#NUM!"},{"$error":"#NUM!"},{"$error":"#NUM!"},{"$error":"#NUM!"},334,0,0,0,0,334,{"$error":"#NUM!"},{"$error":"#NUM!"},{"$error":"#NUM!"}]
[335,{"$error":"#NUM!"},{"$error":"#NUM!"},{"$error":"#NUM!"},{"$error":"#NUM!"},335,0,0,0,0,335,{"$error":"#NUM!"},{"$error":"#NUM!"},{"$error":"#NUM!"}]
[336,{"$error":"#NUM!"},{"$error":"#NUM!"},{"$error":"#NUM!"},{"$error":"#NUM!"},336,0,0,0,0,336,{"$error":"#NUM!"},{"$error":"#NUM!"},{"$error":"#NUM!"}]
[337,{"$error":"#NUM!"},{"$error":"#NUM!"},{"$error":"#NUM!"},{"$error":"#NUM!"},337,0,0,0,0,337,{"$error":"#NUM!"},{"$error":"#NUM!"},{"$error":"#NUM!"}]
[338,{"$error":"#NUM!"},{"$error":"#NUM!"},{"$error":"#NUM!"},{"$error":"#NUM!"},338,0,0,0,0,338,{"$error":"#NUM!"},{"$error":"#NUM!"},{"$error":"#NUM!"}]
[339,{"$error":"#NUM!"},{"$error":"#NUM!"},{"$error":"#NUM!"},{"$error":"#NUM!"},339,0,0,0,0,339,{"$error":"#NUM!"},{"$error":"#NUM!"},{"$error":"#NUM!"}]
[340,{"$error":"#NUM!"},{"$error":"#NUM!"},{"$error":"#NUM!"},{"$error":"#NUM!"},340,0,0,0,0,340,{"$error":"#NUM!"},{"$error":"#NUM!"},{"$error":"#NUM!"}]
[341,{"$error":"#NUM!"},{"$error":"#NUM!"},{"$error":"#NUM!"},{"$error":"#NUM!"},341,0,0,0,0,341,{"$error":"#NUM!"},{"$error":"#NUM!"},{"$error":"#NUM!"}]
[342,{"$error":"#NUM!"},{"$error":"#NUM!"},{"$error":"#NUM!"},{"$error":"#NUM!"},342,0,0,0,0,342,{"$error":"#NUM!"},{"$error":"#NUM!"},{"$error":"#NUM!"}]
[343,{"$error":"#NUM!"},{"$error":"#NUM!"},{"$error":"#NUM!"},{"$error":"#NUM!"},343,0,0,0,0,343,{"$error":"#NUM!"},{"$error":"#NUM!"},{"$error":"#NUM!"}]
[344,{"$error":"#NUM!"},{"$error":"#NUM!"},{"$error":"#NUM!"},{"$error":"#NUM!"},344,0,0,0,0,344,{"$error":"#NUM!"},{"$error":"#NUM!"},{"$error":"#NUM!"}]
[345,{"$error":"#NUM!"},{"$error":"#NUM!"},{"$error":"#NUM!"},{"$error":"#NUM!"},345,0,0,0,0,345,{"$error":"#NUM!"},{"$error":"#NUM!"},{"$error":"#NUM!"}]
[346,{"$error":"#NUM!"},{"$error":"#NUM!"},{"$error":"#NUM!"},{"$error":"#NUM!"},346,0,0,0,0,346,{"$error":"#NUM!"},{"$error":"#NUM!"},{"$error":"#NUM!"}]
[347,{"$error":"#NUM!"},{"$error":"#NUM!"},{"$error":"#NUM!"},{"$error":"#NUM!"},347,0,0,0,0,347,{"$error":"#NUM!"},{"$error":"#NUM!"},{"$error":"#NUM!"}]
[348,{"$error":"#NUM!"},{"$error":"#NUM!"},{"$error":"#NUM!"},{"$error":"#NUM!"},348,0,0,0,0,348,{"$error":"#NUM!"},{"$error":"#NUM!"},{"$error":"#NUM!"}]
[349,{"$error":"#NUM!"},{"$error":"#NUM!"},{"$error":"#NUM!"},{"$error":"#NUM!"},349,0,0,0,0,349,{"$error":"#NUM!"},{"$error":"#NUM!"},{"$error":"#NUM!"}]
[350,{"$error":"#NUM!"},{"$error":"#NUM!"},{"$error":"#NUM!"},{"$error":"#NUM!"},350,0,0,0,0,350,{"$error":"#NUM!"},{"$error":"#NUM!"},{"$error":"#NUM!"}]
[351,{"$error":"#NUM!"},{"$error":"#NUM!"},{"$error":"#NUM!"},{"$error":"#NUM!"},351,0,0,0,0,351,{"$error":"#NUM!"},{"$error":"#NUM!"},{"$error":"#NUM!"}]
[352,{"$error":"#NUM!"},{"$error":"#NUM!"},{"$error":"#NUM!"},{"$error":"#NUM!"},352,0,0,0,0,352,{"$error":"#NUM!"},{"$error":"#NUM!"},{"$error":"#NUM!"}]
[353,{"$error":"#NUM!"},{"$error":"#NUM!"},{"$error":"#NUM!"},{"$error":"#NUM!"},353,0,0,0,0,353,{"$error":"#NUM!"},{"$error":"#NUM!"},{"$error":"#NUM!"}]
[354,{"$error":"#NUM!"},{"$error":"#NUM!"},{"$error":"#NUM!"},{"$error":"#NUM!"},354,0,0,0,0,354,{"$error":"#NUM!"},{"$error":"#NUM!"},{"$error":"#NUM!"}]
[355,{"$error":"#NUM!"},{"$error":"#NUM!"},{"$error":"#NUM!"},{"$error":"#NUM!"},355,0,0,0,0,355,{"$error":"#NUM!"},{"$error":"#NUM!"},{"$error":"#NUM!"}]
[356,{"$error":"#NUM!"},{"$error":"#NUM!"},{"$error":"#NUM!"},{"$error":"#NUM!"},356,0,0,0,0,356,{"$error":"#NUM!"},{"$error":"#NUM!"},{"$error":"#NUM!"}]
[357,{"$error":"#NUM!"},{"$error":"#NUM!"},{"$error":"#NUM!"},{"$error":"#NUM!"},357,0,0,0,0,357,{"$error":"#NUM!"},{"$error":"#NUM!"},{"$error":"#NUM!"}]
[358,{"$error":"#NUM!"},{"$error":"#NUM!"},{"$error":"#NUM!"},{"$error":"#NUM!"},358,0,0,0,0,358,{"$error":"#NUM!"},{"$error":"#NUM!"},{"$error":"#NUM!"}]
[359,{"$error":"#NUM!"},{"$error":"#NUM!"},{"$error":"#NUM!"},{"$error":"#NUM!"},359,0,0,0,0,359,{"$error":"#NUM!"},{"$error":"#NUM!"},{"$error":"#NUM!"}]
[360,{"$error":"#NUM!"},{"$error":"#NUM!"},{"$error":"#NUM!"},{"$error":"#NUM!"},360,0,0,0,0,360,{"$error":"#NUM!"},{"$error":"#NUM!"},{"$error":"#NUM!"}]

{"sheet":"Building Envelope Calculator","index":26,"n_rows":193,"n_cols":4,"rows_kept":193,"cut":false,"hidden":true,"merged":[]}
["Building Envelope Calculator"]
[]
["Land Uses"]
["Streets",{"$f":"'Physical Inputs'!B34*(1-'Physical Inputs'!B35)","v":0}]
["Total Landscaping",{"$f":"PI_SiteArea*PI_LandscapePct","v":2270.0000000000005}]
["Land for Building and Parking",{"$f":"'Physical Inputs'!B34-'Building Envelope Calculator'!B5-B4","v":2229.9999999999995}]
["Total Lot Size",{"$f":"SUM(B4:B5,B6)","v":4500}]
[]
["Maximum Building Envelope"]
["Maximum Building Square Footage",{"$f":"B6*'Physical Inputs'!B37","v":4459.9999999999991}]
["Maximum Building Footprint",{"$f":"B10/'Physical Inputs'!B37","v":2229.9999999999995}]
["Residential Underbuild",{"$f":"IF('Physical Inputs'!A167=\"Multifamily\",'Advanced Financial'!B22,1)","v":1}]
[]
["If Underground or Internal Parking Only  - No Surface/Structured"]
["Square Footage by Use","Max. Square Footage","Spaces Possible","Max. Add'l Surface Parking Area"]
[{"$f":"'Physical Inputs'!A41","v":"Residential"},{"$f":"($B$10-$B$24)*'Physical Inputs'!B43","v":4459.9999999999991},{"$f":"IF('Physical Inputs'!B62=0,0,(B16/('Physical Inputs'!B62/'Building Envelope Calculator'!B12))*'Physical Inputs'!B76)","v":2.7874999999999996}]
[{"$f":"'Physical Inputs'!A44","v":"Retail"},{"$f":"($B$10-$B$24)*'Physical Inputs'!B44","v":0},{"$f":"((B17/1000)*'Physical Inputs'!B77)","v":0}]
[{"$f":"'Physical Inputs'!A46","v":"Office"},{"$f":"($B$10-$B$24)*'Physical Inputs'!B46","v":0},{"$f":"((B18/1000)*'Physical Inputs'!B78)","v":0}]
[{"$f":"'Physical Inputs'!A47","v":"Industrial"},{"$f":"($B$10-$B$24)*'Physical Inputs'!B47","v":0},{"$f":"(B19/1000)*'Physical Inputs'!B79","v":0}]
[{"$f":"'Physical Inputs'!A48","v":"Public"},{"$f":"($B$10-$B$24)*'Physical Inputs'!B48","v":0},{"$f":"(B20/1000)*'Physical Inputs'!B80","v":0}]
["Educational",{"$f":"($B$10-$B$24)*'Physical Inputs'!B49","v":0},{"$f":"(B21/1000)*'Physical Inputs'!B81","v":0}]
[{"$f":"'Physical Inputs'!A50","v":"Hotel/Motel"},{"$f":"($B$10-$B$24)*'Physical Inputs'!B50","v":0},{"$f":"IF('Physical Inputs'!B71=0,0,(B22/(('Physical Inputs'!B71*AF_HotelGrossPct)/'Advanced Financial'!B23))*'Physical Inputs'!B82)","v":0}]
[{"$f":"'Physical Inputs'!A51","v":"Commercial Parking"},{"$f":"($B$10-$B$24)*'Physical Inputs'!B51","v":0},{"$f":"B23/'Physical Inputs'!C100","v":0}]
["Internal Parking",{"$f":"'Physical Inputs'!B86*B11","v":0},{"$f":"B24/'Physical Inputs'!C100","v":0}]
["Total:",{"$f":"SUM(B16:B24)","v":4459.9999999999991},{"$f":"SUM(C16:C24)","v":2.7874999999999996}]
["Less Internal Parking",null,{"$f":"SUM(C16:C22)-SUM(C24)","v":2.7874999999999996},{"$f":"C26*'Physical Inputs'!C100","v":878.06249999999989}]
[]
[null,"# Spaces"]
["Maximum Parking Spaces Required (excluding Commercial Parking)",{"$f":"SUM(C16:C22)","v":2.7874999999999996}]
["Underground Parking Spaces Provided",{"$f":"IF(AND('Physical Inputs'!B88>0,'Physical Inputs'!B91=\"yes\"),(('Physical Inputs'!B34*'Physical Inputs'!B88)/'Physical Inputs'!C98),IF('Physical Inputs'!B88>0,(('Physical Inputs'!B34*'Physical Inputs'!B88)/'Physical Inputs'!C100),0))","v":0}]
["Internal / Tuck-Under Spaces Provided",{"$f":"C24","v":0}]
["Surplus / Deficit",{"$f":"(B30+B31)-B29","v":-2.7874999999999996}]
[]
[null,"# Spaces"]
["External Spaces Required Per 1000 SF of Max. Building Envelope",{"$f":"(C26/(B25/1000))","v":0.625}]
["Maximum Spaces Underground",{"$f":"(B7/'Physical Inputs'!C100)*'Physical Inputs'!B88","v":0}]
["Adjusted Spaces Underground",{"$f":"IF(C26<B36,C26,B36)","v":0}]
["Remainder External Spaces Required Per 1000 SF Max. Building Envelope",{"$f":"IF(B35<0,0,B35)","v":0.625}]
[]
[null,"Square Feet"]
["Total Parking and Building Footprint (Lot minus landscaping)",{"$f":"B6","v":2229.9999999999995}]
["Square Feet of Building Envelope that can be supported by internal and UG parking",{"$f":"IF(B35=0,0,((1000/B35)*B37))","v":0}]
["Adjustment if over total building envelope",{"$f":"IF(B42>B10,B10,B42)","v":0}]
["Footprint of Building Represented by internal and UG Parking",{"$f":"B43/'Physical Inputs'!B37","v":0}]
["Adjustment if Over Total Footprint",{"$f":"IF(B44>B41,B41,B44)","v":0}]
["Remaining Part of Footprint Needed for Building and Above Grade Parking ",{"$f":"B41-B45","v":2229.9999999999995}]
[]
[]
["If Underground or Internal Parking Only AND additional Surface/Structured Parking Required"]
["Square Footage by Use","Max. Square Footage","Spaces Required","% Max. Building Square Footage"]
[{"$f":"A16","v":"Residential"},{"$f":"IF($B$29>=($B$30+$B$31),($B$43*D51),B16)","v":0},{"$f":"IF('Physical Inputs'!B62=0,0,(B51/('Physical Inputs'!B62/'Building Envelope Calculator'!B12))*'Physical Inputs'!B76)","v":0},{"$f":"(1-$D$59)*'Physical Inputs'!B43","v":1}]
["Retail",0,{"$f":"(B52/1000)*'Physical Inputs'!B77","v":0},{"$f":"(1-$D$59)*'Physical Inputs'!B44","v":0}]
["Office",0,{"$f":"(B53/1000)*'Physical Inputs'!B78","v":0},{"$f":"(1-$D$59)*'Physical Inputs'!B46","v":0}]
["Industrial",0,{"$f":"(B54/1000)*'Physical Inputs'!B79","v":0},{"$f":"(1-$D$59)*'Physical Inputs'!B47","v":0}]
["Public",0,{"$f":"(B55/1000)*'Physical Inputs'!B80","v":0},{"$f":"(1-$D$59)*'Physical Inputs'!B48","v":0}]
["Educational",0,{"$f":"(B56/1000)*'Physical Inputs'!B81","v":0},{"$f":"(1-$D$59)*'Physical Inputs'!B49","v":0}]
["Hotel/Motel",0,{"$f":"IF('Physical Inputs'!B71=0,0,(B57/(('Physical Inputs'!B71*AF_HotelGrossPct)/'Advanced Financial'!B23))*'Physical Inputs'!B82)","v":0},{"$f":"(1-$D$59)*'Physical Inputs'!B50","v":0}]
["Commercial Parking",0,{"$f":"B58/'Physical Inputs'!C100","v":0},{"$f":"(1-$D$59)*'Physical Inputs'!B51","v":0}]
["Internal Parking",0,{"$f":"B59/'Physical Inputs'!C100","v":0},{"$f":"IF('Physical Inputs'!B86=0,0,1/('Physical Inputs'!B37/'Physical Inputs'!B86))","v":0}]
["Total",{"$f":"SUM(B51:B59)","v":0},{"$f":"SUM(C51:C58)","v":0},"spaces required"]
["Less internal parking ",null,{"$f":"SUM(C51:C57)-C59","v":0},"spaces required"]
[]
[]
["Building Footprint",{"$f":"B43/'Physical Inputs'!B37","v":0}]
["Total Landscaping",{"$f":"B5","v":2270.0000000000005}]
["Parking Footprint",{"$f":"0","v":0}]
["Unused Footprint",{"$f":"B7-(SUM(B64:B66))","v":2229.9999999999995}]
[]
["If Surface/Structured Parking"]
[null,"Parking Footprint Ratio","Building Footprint Ratio"]
["Surface Parking SF per 1000 SF of Max. Building Envelope",{"$f":"B38*'Physical Inputs'!C100","v":196.875},1000]
["Surface Parking SF per 1000 SF of Max. Building Envelope (divide by number of levels of structure)",{"$f":"IF('Physical Inputs'!B85=0,0,B71/'Physical Inputs'!B85)","v":196.875},{"$f":"(C71/'Physical Inputs'!B37)","v":500}]
["Building to available lot area factor (lot minus landscaping)",{"$f":"(B46/(B72+C72))","v":3.1999999999999993}]
["Surface Parking SF per 1000 SF of Max. Building Envelope  - Factor applied",{"$f":"B72*B73","v":629.99999999999989},{"$f":"C72*B73","v":1599.9999999999995}]
["ABOVE GRADE PARKING? (1= yes, 0=no)",{"$f":"IF(OR('Physical Inputs'!B85>0,'Physical Inputs'!B85+'Physical Inputs'!B88+'Physical Inputs'!B86=0),1,0)","v":1}]
["Above Grade Parking Footprint",{"$f":"IF(B75=1,B74,0)","v":629.99999999999989}]
["Building Footprint (That Needs to Supported by the Above Grade Parking)",{"$f":"IF(B75=1,C74,0)","v":1599.9999999999995}]
["Adjusted Total Building Footprint (adds building footprint represented by UG and Surface/Structured)",{"$f":"IF(B75=1,(B45+B77),B45)","v":1599.9999999999995}]
["Above Grade Parking Footprint",{"$f":"B76","v":629.99999999999989}]
["Unused Space",{"$f":"B6-(B78+B79)","v":0}]
["Adjusted Maximum Building Square Footage",{"$f":"B78*'Physical Inputs'!B37","v":3199.9999999999991}]
[]
[null,"Square Feet"]
["Building Footprint",{"$f":"B78","v":1599.9999999999995}]
["Total Landscaping",{"$f":"B5","v":2270.0000000000005}]
["Parking Footprint",{"$f":"B79","v":629.99999999999989}]
["Unused Footprint",{"$f":"B80","v":0}]
[]
["Square Footage by Use (if surface/structured parking)","Max. Square Footage","Spaces Required"]
[{"$f":"A16","v":"Residential"},{"$f":"($B$81-$B$98)*'Physical Inputs'!B43","v":3199.9999999999991},{"$f":"IF('Physical Inputs'!B62=0,0,(B90/('Physical Inputs'!B62/'Building Envelope Calculator'!B12))*'Physical Inputs'!B76)","v":1.9999999999999993}]
["Retail",{"$f":"($B$81-$B$98)*'Physical Inputs'!B44","v":0},{"$f":"(B91/1000)*'Physical Inputs'!B77","v":0}]
["Office",{"$f":"($B$81-$B$98)*'Physical Inputs'!B46","v":0},{"$f":"(B92/1000)*'Physical Inputs'!B78","v":0}]
["Industrial",{"$f":"($B$81-$B$98)*'Physical Inputs'!B47","v":0},{"$f":"(B93/1000)*'Physical Inputs'!B79","v":0}]
["Public",{"$f":"($B$81-$B$98)*'Physical Inputs'!B48","v":0},{"$f":"(B94/1000)*'Physical Inputs'!B80","v":0}]
["Educational",{"$f":"($B$81-$B$98)*'Physical Inputs'!B49","v":0},{"$f":"(B95/1000)*'Physical Inputs'!B81","v":0}]
["Hotel/Motel",{"$f":"($B$81-$B$98)*'Physical Inputs'!B50","v":0},{"$f":"IF('Physical Inputs'!B71=0,0,(B96/(('Physical Inputs'!B71*AF_HotelGrossPct)/'Advanced Financial'!B23))*'Physical Inputs'!B82)","v":0}]
["Commercial Parking",{"$f":"($B$81-$B$98)*'Physical Inputs'!B51","v":0},{"$f":"B97/'Physical Inputs'!C100","v":0}]
["Internal Parking",{"$f":"(B81/'Physical Inputs'!B37)*'Physical Inputs'!B86","v":0},{"$f":"B98/'Physical Inputs'!C100","v":0}]
["Total:",{"$f":"SUM(B90:B98)","v":3199.9999999999991},{"$f":"SUM(C90:C96)","v":1.9999999999999993}]
["Less internal parking",null,{"$f":"SUM(C90:C96)-C98","v":1.9999999999999993}]
[]
["Square Footage by Use (without Underbuild)","Max. Square Footage","Spaces Required"]
[{"$f":"A90","v":"Residential"},{"$f":"IF($B$75>0,B90,B51)","v":3199.9999999999991},{"$f":"IF($B$32>=0,C16,C90)","v":1.9999999999999993}]
["Retail",0,0]
["Office",0,0]
["Industrial",0,0]
["Public",0,0]
["Educational",0,0]
["Hotel/Motel",0,0]
["Commercial Parking",0,0]
["Internal Parking",0,0]
["Total:",{"$f":"SUM(B103:B111)","v":3199.9999999999991}]
[]
["Square Footage by Use (with Underbuild)","Max. Square Footage","Spaces Required"]
[{"$f":"A103","v":"Residential"},{"$f":"B103*'Physical Inputs'!$B$38","v":3199.9999999999991},{"$f":"C103*'Physical Inputs'!$B$38","v":1.9999999999999993}]
["Retail",{"$f":"B104*'Physical Inputs'!$B$38","v":0},{"$f":"C104*'Physical Inputs'!$B$38","v":0}]
["Office",{"$f":"B105*'Physical Inputs'!$B$38","v":0},{"$f":"C105*'Physical Inputs'!$B$38","v":0}]
["Industrial",{"$f":"B106*'Physical Inputs'!$B$38","v":0},{"$f":"C106*'Physical Inputs'!$B$38","v":0}]
["Public",{"$f":"B107*'Physical Inputs'!$B$38","v":0},{"$f":"C107*'Physical Inputs'!$B$38","v":0}]
["Educational",{"$f":"B108*'Physical Inputs'!$B$38","v":0},{"$f":"C108*'Physical Inputs'!$B$38","v":0}]
["Hotel/Motel",{"$f":"B109*'Physical Inputs'!$B$38","v":0},{"$f":"C109*'Physical Inputs'!$B$38","v":0}]
["Commercial Parking",{"$f":"B110*'Physical Inputs'!$B$38","v":0},{"$f":"C110*'Physical Inputs'!$B$38","v":0}]
[{"$f":"A111","v":"Internal Parking"},{"$f":"B111*'Physical Inputs'!$B$38","v":0},{"$f":"B123/'Physical Inputs'!C100","v":0},"will build more than required"]
["Total",{"$f":"SUM(B115:B123)","v":3199.9999999999991},{"$f":"SUM(C115:C121)","v":1.9999999999999993}]
[]
["Adjustment Factors"]
["Unused Footprint",{"$f":"B161","v":0}]
["Bldg Footprint per 1000 SF of Bldg Area",{"$f":"1000/PI_BHeight/PI_UnderBuild","v":500}]
["Bldg and Parking Footprint per 1000 SF of Bldg Area",{"$f":"B128+B72","v":696.875}]
["SF of Addt'l Adjusted Building Area",{"$f":"1000*B127/B129","v":0}]
["SF of Addt'l Adjusted Building Footprint",{"$f":"B128*(B130/1000)","v":0}]
["SF of Addt'l Parking",{"$f":"B72*B130/1000","v":0}]
["Adjusted Building Volume",{"$f":"B124+B130","v":3199.9999999999991}]
["Adjusted Total Spaces",{"$f":"C124+(B132/PI_ParkingSize)","v":1.9999999999999993}]
[]
[]
["Square Footage by Use (Adjusted)","Max. Square Footage","Spaces Required"]
[{"$f":"A115","v":"Residential"},{"$f":"B115*($B$133/$B$124)","v":3199.9999999999991},1.9999999999999993]
["Retail",0,0]
["Office",0,0]
["Industrial",0,0]
["Public",0,0]
["Educational",0,0]
["Hotel/Motel",0,0]
["Commercial Parking",0,0]
["Internal Parking",0,0,"will build more than required"]
["Total",{"$f":"SUM(B138:B146)","v":3199.9999999999991},{"$f":"SUM(C138:C144)","v":1.9999999999999993}]
[]
["Site Summary"]
["Pre-Underbuild","Square Feet"]
["Building Footprint",{"$f":"IF($B$75>0,B84,B64)","v":1599.9999999999995}]
["Landscaping Footprint",{"$f":"IF($B$75>0,B85,B65)","v":2270.0000000000005}]
["Parking Footprint",{"$f":"IF($B$75>0,B86,B66)","v":629.99999999999989}]
["Unused Footprint",{"$f":"IF($B$75>0,B87,B67)","v":0}]
[]
[]
["Post-Underbuild","Square Feet"]
["Building Footprint",{"$f":"B151","v":1599.9999999999995}]
["Landscaping Footprint",{"$f":"B152","v":2270.0000000000005}]
["Parking Footprint",{"$f":"B153*PI_UnderBuild","v":629.99999999999989}]
["Unused Footprint",{"$f":"PI_SiteArea-SUM(B158:B160)-B4","v":0}]
[]
["Adjusted","Square Feet"]
["Building Footprint",{"$f":"B158+B131","v":1599.9999999999995}]
["Landscaping Footprint",{"$f":"B159","v":2270.0000000000005}]
["Parking Footprint",{"$f":"B132+B160","v":629.99999999999989}]
["Unused Footprint",0]
[]
["Spaces","Square Feet"]
["Surface/Structured",{"$f":"IF(C187>(B171+B173),(C187-(B171+B173)),0)","v":1.9999999999999993}]
["Underground",{"$f":"IF(B184-D$187>0,B184-D$187,0)","v":0}]
["Commercial Parking",{"$f":"B185","v":0}]
["Internal",{"$f":"B186","v":0}]
[]
["Parking Space Adjustments","Spaces Provided","Spaces Req'd","Excess Parking"]
["Residential",null,{"$f":"C138","v":1.9999999999999993}]
["Retail",null,0]
["Office",null,0]
["Industrial",null,0]
["Public",null,0]
["Educational",null,0]
["Hotel/Motel",null,0]
["Surface/Structured",{"$f":"IF(B75>0,(B166*'Physical Inputs'!B85)/'Physical Inputs'!C100,0)","v":1.9999999999999996}]
["Underground",{"$f":"B30","v":0}]
["Commercial Parking",{"$f":"C145","v":0},{"$f":"B172","v":0}]
["Internal (Tuck Under or Sandwich)",{"$f":"C146","v":0}]
["Total",{"$f":"SUM(B183:B184)+B186","v":1.9999999999999996},{"$f":"IF('Physical Inputs'!B88+'Physical Inputs'!B85+'Physical Inputs'!B86=0,0,SUM(C138:C144))","v":1.9999999999999993},{"$f":"B187-C187","v":0}]
[]
[]
[]
["Parking Footprint Adjustments","Total Parking Area","Parking Footprint"]
["Surface/Structured",{"$f":"B170*'Physical Inputs'!C100","v":629.99999999999977},{"$f":"IF(B192<'Physical Inputs'!C100,0,(B192/'Physical Inputs'!B85))","v":629.99999999999977},"adjusted parking footprint"]
["Underground",null,{"$f":"(B171*'Physical Inputs'!C100)/B7","v":0},"adjusted number of parking levels"]

{"sheet":"Prototype Modeler","index":27,"n_rows":74,"n_cols":9,"rows_kept":74,"cut":false,"hidden":true,"merged":[[49,5,49,6],[49,7,49,8],[37,1,37,2],[37,3,37,4],[37,5,37,6],[37,7,37,8],[43,1,43,2],[43,3,43,4],[43,5,43,6],[43,7,43,8],[37,0,38,0],[43,0,44,0],[49,0,50,0],[49,1,49,2],[49,3,49,4]]}
["Prototype Modeler"]
[]
["Units","Current Unit"]
["Unit",{"$f":"PI_Units","v":"US Customary"}]
[]
["Lot Dimensions","w/ Setbacks","w/Out Setbacks"]
["Short Side (W)",{"$f":"IF(PM_Units=\"US Customary\",'Physical Inputs'!B27-('Physical Inputs'!C29+'Physical Inputs'!C30),('Physical Inputs'!B27-('Physical Inputs'!C29+'Physical Inputs'!C30))*3.28084)","v":35},{"$f":"IF(PM_Units=\"US Customary\",'Physical Inputs'!B27,'Physical Inputs'!B27*3.28084)","v":45}]
["Long Side (L)",{"$f":"IF(PM_Units=\"US Customary\",'Physical Inputs'!B30-('Physical Inputs'!C27+'Physical Inputs'!C28),('Physical Inputs'!B30-('Physical Inputs'!C27+'Physical Inputs'!C28))*3.28084)","v":75},{"$f":"IF(PM_Units=\"US Customary\",'Physical Inputs'!B30,'Physical Inputs'!B30*3.28084)","v":100}]
[]
["Building Dimensions","w/Out Underbuild","w/Underbuild"]
["Bldg Footprint",{"$f":"IF(PM_Units=\"US Customary\",PO_BuildingFootprint,PO_BuildingFootprint*10.7639)","v":1599.9999999999995}]
["Width",{"$f":"IF('Prototype Modeler'!B63=\"Front\",B7,IF('Prototype Modeler'!B63=\"Left\",B11/B8,IF('Prototype Modeler'!B63=\"Rear\",B7,IF('Prototype Modeler'!B63=\"Right\",B11/B8))))","v":35},{"$f":"IF('Prototype Modeler'!B63=\"Front\",'Prototype Modeler'!B12,IF('Prototype Modeler'!B63=\"Rear\",'Prototype Modeler'!B12,IF('Prototype Modeler'!B63=\"Right\",'Prototype Modeler'!B60/B13,IF('Prototype Modeler'!B63=\"Left\",'Prototype Modeler'!B60/B13))))","v":35}]
["Height",{"$f":"B11/B12","v":45.714285714285701},{"$f":"IF('Prototype Modeler'!B63=\"Left\",'Prototype Modeler'!B13,IF('Prototype Modeler'!B63=\"Right\",'Prototype Modeler'!B13,IF('Prototype Modeler'!B63=\"Front\",'Prototype Modeler'!B60/B12,IF('Prototype Modeler'!B63=\"Rear\",'Prototype Modeler'!B60/B12))))","v":45.714285714285701}]
[]
["Parking Dimensions"]
["Parking Footprint",{"$f":"IF(PM_Units=\"US Customary\",PO_ParkingSf,PO_ParkingSf*10.7639)","v":629.99999999999989}]
["Width",{"$f":"IF('Prototype Modeler'!B63=\"Front\",B16/(B8-B13),IF('Prototype Modeler'!B63=\"Rear\",B16/(B8-B13),IF('Prototype Modeler'!B63=\"Left\",B7-B12,IF('Prototype Modeler'!B63=\"Right\",B7-B12))))","v":21.512195121951205}]
["Height",{"$f":"IF('Prototype Modeler'!B63=\"Front\",B8-B13,IF('Prototype Modeler'!B63=\"Rear\",B8-B13,IF('Prototype Modeler'!B63=\"Left\",B16/B17,IF('Prototype Modeler'!B63=\"Right\",B16/B17))))","v":29.285714285714299}]
[]
["Setbacks","Setback Width","Sidewalk Width","Sidewalk + Setback"]
["Front",{"$f":"'Physical Inputs'!C27","v":10},10,{"$f":"SUM(B21:C21)","v":20}]
[{"$f":"'Physical Inputs'!A28","v":"Rear"},{"$f":"'Physical Inputs'!C28","v":15},0,{"$f":"SUM(B22:C22)","v":15}]
[{"$f":"'Physical Inputs'!A29","v":"Left"},{"$f":"'Physical Inputs'!C29","v":5},0,{"$f":"SUM(B23:C23)","v":5}]
[{"$f":"'Physical Inputs'!A30","v":"Right"},{"$f":"'Physical Inputs'!C30","v":5},0,{"$f":"SUM(B24:C24)","v":5}]
[]
["Building Vertices","x","y","x-underbuild","y - underbuild"]
[1,{"$f":"IF('Prototype Modeler'!$B$63=$B$38,B40,IF('Prototype Modeler'!$B$63=$D$38,D40,IF('Prototype Modeler'!$B$63=$F$38,F40,IF('Prototype Modeler'!$B$63=$H$38,H40))))","v":0},{"$f":"IF('Prototype Modeler'!$B$63=$B$38,C40,IF('Prototype Modeler'!$B$63=$D$38,E40,IF('Prototype Modeler'!$B$63=$F$38,G40,IF('Prototype Modeler'!$B$63=$H$38,I40))))","v":75},{"$f":"IF('Prototype Modeler'!$B$63=$B$38,B46,IF('Prototype Modeler'!$B$63=$D$38,D46,IF('Prototype Modeler'!$B$63=$F$38,F46,IF('Prototype Modeler'!$B$63=$H$38,H46))))","v":0},{"$f":"IF('Prototype Modeler'!$B$63=$B$38,C46,IF('Prototype Modeler'!$B$63=$D$38,E46,IF('Prototype Modeler'!$B$63=$F$38,G46,IF('Prototype Modeler'!$B$63=$H$38,I46))))","v":75}]
[2,{"$f":"IF('Prototype Modeler'!$B$63=$B$38,B41,IF('Prototype Modeler'!$B$63=$D$38,D41,IF('Prototype Modeler'!$B$63=$F$38,F41,IF('Prototype Modeler'!$B$63=$H$38,H41))))","v":0},{"$f":"IF('Prototype Modeler'!$B$63=$B$38,C41,IF('Prototype Modeler'!$B$63=$D$38,E41,IF('Prototype Modeler'!$B$63=$F$38,G41,IF('Prototype Modeler'!$B$63=$H$38,I41))))","v":29.285714285714299},{"$f":"IF('Prototype Modeler'!$B$63=$B$38,B47,IF('Prototype Modeler'!$B$63=$D$38,D47,IF('Prototype Modeler'!$B$63=$F$38,F47,IF('Prototype Modeler'!$B$63=$H$38,H47))))","v":0},{"$f":"IF('Prototype Modeler'!$B$63=$B$38,C47,IF('Prototype Modeler'!$B$63=$D$38,E47,IF('Prototype Modeler'!$B$63=$F$38,G47,IF('Prototype Modeler'!$B$63=$H$38,I47))))","v":29.285714285714299}]
[3,{"$f":"IF('Prototype Modeler'!$B$63=$B$38,B42,IF('Prototype Modeler'!$B$63=$D$38,D42,IF('Prototype Modeler'!$B$63=$F$38,F42,IF('Prototype Modeler'!$B$63=$H$38,H42))))","v":35},{"$f":"IF('Prototype Modeler'!$B$63=$B$38,C42,IF('Prototype Modeler'!$B$63=$D$38,E42,IF('Prototype Modeler'!$B$63=$F$38,G42,IF('Prototype Modeler'!$B$63=$H$38,I42))))","v":29.285714285714299},{"$f":"IF('Prototype Modeler'!$B$63=$B$38,B48,IF('Prototype Modeler'!$B$63=$D$38,D48,IF('Prototype Modeler'!$B$63=$F$38,F48,IF('Prototype Modeler'!$B$63=$H$38,H48))))","v":35},{"$f":"IF('Prototype Modeler'!$B$63=$B$38,C48,IF('Prototype Modeler'!$B$63=$D$38,E48,IF('Prototype Modeler'!$B$63=$F$38,G48,IF('Prototype Modeler'!$B$63=$H$38,I48))))","v":29.285714285714299}]
[4,{"$f":"IF('Prototype Modeler'!$B$63=$B$38,B43,IF('Prototype Modeler'!$B$63=$D$38,D43,IF('Prototype Modeler'!$B$63=$F$38,F43,IF('Prototype Modeler'!$B$63=$H$38,H43))))","v":35},{"$f":"IF('Prototype Modeler'!$B$63=$B$38,C43,IF('Prototype Modeler'!$B$63=$D$38,E43,IF('Prototype Modeler'!$B$63=$F$38,G43,IF('Prototype Modeler'!$B$63=$H$38,I43))))","v":75},{"$f":"IF('Prototype Modeler'!$B$63=$B$38,B49,IF('Prototype Modeler'!$B$63=$D$38,D49,IF('Prototype Modeler'!$B$63=$F$38,F49,IF('Prototype Modeler'!$B$63=$H$38,H49))))","v":35},{"$f":"IF('Prototype Modeler'!$B$63=$B$38,C49,IF('Prototype Modeler'!$B$63=$D$38,E49,IF('Prototype Modeler'!$B$63=$F$38,G49,IF('Prototype Modeler'!$B$63=$H$38,I49))))","v":75}]
[]
["Parking Vertices","x - no underbuild","y - no underbuild"]
[1,{"$f":"IF('Prototype Modeler'!$B$63=$B$38,B52,IF('Prototype Modeler'!$B$63=$D$38,D52,IF('Prototype Modeler'!$B$63=$F$38,F52,IF('Prototype Modeler'!$B$63=$H$38,H52))))","v":0},{"$f":"IF('Prototype Modeler'!$B$63=$B$38,C52,IF('Prototype Modeler'!$B$63=$D$38,E52,IF('Prototype Modeler'!$B$63=$F$38,G52,IF('Prototype Modeler'!$B$63=$H$38,I52))))","v":0}]
[2,{"$f":"IF('Prototype Modeler'!$B$63=$B$38,B53,IF('Prototype Modeler'!$B$63=$D$38,D53,IF('Prototype Modeler'!$B$63=$F$38,F53,IF('Prototype Modeler'!$B$63=$H$38,H53))))","v":21.512195121951205},{"$f":"IF('Prototype Modeler'!$B$63=$B$38,C53,IF('Prototype Modeler'!$B$63=$D$38,E53,IF('Prototype Modeler'!$B$63=$F$38,G53,IF('Prototype Modeler'!$B$63=$H$38,I53))))","v":0}]
[3,{"$f":"IF('Prototype Modeler'!$B$63=$B$38,B54,IF('Prototype Modeler'!$B$63=$D$38,D54,IF('Prototype Modeler'!$B$63=$F$38,F54,IF('Prototype Modeler'!$B$63=$H$38,H54))))","v":21.512195121951205},{"$f":"IF('Prototype Modeler'!$B$63=$B$38,C54,IF('Prototype Modeler'!$B$63=$D$38,E54,IF('Prototype Modeler'!$B$63=$F$38,G54,IF('Prototype Modeler'!$B$63=$H$38,I54))))","v":29.285714285714299}]
[4,{"$f":"IF('Prototype Modeler'!$B$63=$B$38,B55,IF('Prototype Modeler'!$B$63=$D$38,D55,IF('Prototype Modeler'!$B$63=$F$38,F55,IF('Prototype Modeler'!$B$63=$H$38,H55))))","v":0},{"$f":"IF('Prototype Modeler'!$B$63=$B$38,C55,IF('Prototype Modeler'!$B$63=$D$38,E55,IF('Prototype Modeler'!$B$63=$F$38,G55,IF('Prototype Modeler'!$B$63=$H$38,I55))))","v":29.285714285714299}]
[]
["Building Vert. Opts.","Front",null,"Rear",null,"Left",null,"Right"]
[null,"x","y","x","y","x","y","x","y"]
[1,0,0,0,{"$f":"B8","v":75},0,0,{"$f":"B7","v":35},0]
[2,{"$f":"B7","v":35},0,0,{"$f":"B8-B13","v":29.285714285714299},{"$f":"B12","v":35},0,{"$f":"B7","v":35},{"$f":"B8","v":75}]
[3,{"$f":"B7","v":35},{"$f":"B13","v":45.714285714285701},{"$f":"B7","v":35},{"$f":"B8-B13","v":29.285714285714299},{"$f":"B12","v":35},{"$f":"B8","v":75},{"$f":"B7-B12","v":0},{"$f":"I41","v":75}]
[4,0,{"$f":"B13","v":45.714285714285701},{"$f":"B7","v":35},{"$f":"B8","v":75},0,{"$f":"B8","v":75},{"$f":"B7-B12","v":0},0]
["Building Vert. Opts. UB","Front",null,"Rear",null,"Left",null,"Right"]
[null,"x","y","x","y","x","y","x","y"]
[1,{"$f":"B40","v":0},{"$f":"C42-C13","v":0},{"$f":"D40","v":0},{"$f":"E47+C13","v":75},{"$f":"F47-C12","v":0},{"$f":"G40","v":0},{"$f":"H42+C12","v":35},{"$f":"I40","v":0}]
[2,{"$f":"B41","v":35},{"$f":"C30-C13","v":29.285714285714299},{"$f":"D41","v":0},{"$f":"E41","v":29.285714285714299},{"$f":"F41","v":35},{"$f":"G41","v":0},{"$f":"H43+C12","v":35},{"$f":"I41","v":75}]
[3,{"$f":"B42","v":35},{"$f":"C42","v":45.714285714285701},{"$f":"D42","v":35},{"$f":"E42","v":29.285714285714299},{"$f":"F42","v":35},{"$f":"G42","v":75},{"$f":"H42","v":0},{"$f":"I42","v":75}]
[4,{"$f":"B43","v":0},{"$f":"C43","v":45.714285714285701},{"$f":"D43","v":35},{"$f":"E48+C13","v":75},{"$f":"F48-C12","v":0},{"$f":"G43","v":75},{"$f":"H43","v":0},{"$f":"I43","v":0}]
["Parking Vert. Opts.","Front",null,"Rear",null,"Left",null,"Right"]
["Parking Vert. Opts.","x","y","x","y","x","y","x","y"]
[1,0,{"$f":"B8","v":75},0,0,{"$f":"B7","v":35},0,0,0]
[2,0,{"$f":"B8-B18","v":45.714285714285701},{"$f":"B17","v":21.512195121951205},0,{"$f":"B7","v":35},{"$f":"B18","v":29.285714285714299},0,{"$f":"B18","v":29.285714285714299}]
[3,{"$f":"B17","v":21.512195121951205},{"$f":"B8-B18","v":45.714285714285701},{"$f":"B17","v":21.512195121951205},{"$f":"B18","v":29.285714285714299},{"$f":"B7-B17","v":13.487804878048795},{"$f":"B18","v":29.285714285714299},{"$f":"B17","v":21.512195121951205},{"$f":"B18","v":29.285714285714299}]
[4,{"$f":"B17","v":21.512195121951205},{"$f":"B8","v":75},0,{"$f":"B18","v":29.285714285714299},{"$f":"B7-B17","v":13.487804878048795},0,{"$f":"B17","v":21.512195121951205},0]
[]
["Project Stats"]
["Building Height",{"$f":"PI_BHeight","v":2}]
["Underbuild",{"$f":"PI_UnderBuild","v":1}]
["underbuild floorplate",{"$f":"((B61*B59)-B11)/(B58-1)","v":1599.9999999999995}]
["max building vol",{"$f":"B11*B58","v":3199.9999999999991}]
["parking levels",{"$f":"PI_Structured","v":1}]
["bldg orientation","Rear"]
["Setback Landscaping",{"$f":"PI_CalcLandscape","v":0.41666666666666669}]
["PI Landscaping",{"$f":"PI_LandscapePct","v":0.50444444444444458}]
[]
["Notes"]
[{"$f":"PI_Name&\" \"","v":"Brampton - New Build Duplex "}]
[{"$f":"PI_Location","v":"Puget Sound, WA"}]
[{"$f":"\"Site Area: \"&B70&\" \"&'Metric Translation'!B12","v":"Site Area: 0.1 acres"},{"$f":"TEXT('Physical Inputs'!C34,\"#0.0#\")","v":"0.1"}]
[{"$f":"\"FAR: \"&B71","v":"FAR: 0.71"},{"$f":"ROUND('Physical Inputs'!B7,2)","v":0.71}]
[{"$f":"\"Leasable \"&'Metric Translation'!B5&\": \"&B72","v":"Leasable sf: 3,200"},{"$f":"TEXT('Physical Outputs'!C39,\"#,##0\")","v":"3,200"}]
[{"$f":"\"Parking Spaces: \"&B73","v":"Parking Spaces: 2"},{"$f":"ROUND('Physical Outputs'!B61,0)","v":2}]
[{"$f":"\"Project R.O.I.: \"&B74","v":"Project R.O.I.: .%"},{"$f":"TEXT('Physical Inputs'!C11,\"##.##%\")","v":".%"}]

{"sheet":"Development Costs","index":28,"n_rows":49,"n_cols":6,"rows_kept":49,"cut":false,"hidden":true,"merged":[]}
["PROJECT DEVELOPMENT COSTS"]
[]
["Pre Development Costs"]
[null,"due diligence",null,null,{"$f":"-'Advanced Financial'!B40","v":0}]
[null,"land carry (% of raw land cost)",{"$f":"'Advanced Financial'!B41","v":0.05},null,{"$f":"C5*E8*1","v":-9000}]
[null,"land entitlement / legal fees (% raw land)",{"$f":"'Advanced Financial'!B42","v":0.02},null,{"$f":"(C6*E8)","v":-3600}]
[null,"professional fees (% of hard costs)",{"$f":"'Advanced Financial'!B43","v":0.05},null,{"$f":"(C7*SUM(E12:E24))","v":-44579.999999999993}]
[null,"Raw land",null,null,{"$f":"-'Basic Financial'!C31","v":-180000}]
[]
["Development Costs"]
[null,"Building Construction Costs"]
[null,"Demolition Costs",null,null,{"$f":"-'Advanced Financial'!B46","v":-50000}]
[null,"Site Development Costs",{"$f":"'Advanced Financial'!B47","v":0},null,{"$f":"-('Physical Inputs'!B34*C13)","v":0}]
[null,"Brownfield Remediation Costs $/sf",{"$f":"'Advanced Financial'!B48","v":0},null,{"$f":"-C14*'Physical Inputs'!B34","v":0}]
[null,"Residential Construction Costs $/sf",{"$f":"'Basic Financial'!B21","v":261},null,{"$f":"-C15*'Physical Outputs'!B29","v":-835199.99999999977}]
[null,"Retail Construction Costs $/sf",{"$f":"'Basic Financial'!B22","v":0},null,{"$f":"-C16*'Physical Outputs'!B30","v":0}]
[null,"Office Construction Costs $/sf",{"$f":"'Basic Financial'!B23","v":0},null,{"$f":"-C17*'Physical Outputs'!B31","v":0}]
[null,"Industrial Construction Costs $/sf",{"$f":"'Basic Financial'!B24","v":0},null,{"$f":"-C18*'Physical Outputs'!B32","v":0}]
[null,"Public Construction Costs $/sf",{"$f":"'Basic Financial'!B25","v":0},null,{"$f":"-C19*'Physical Outputs'!B33","v":0}]
[null,"Education Construction Costs $/sf",{"$f":"'Basic Financial'!B26","v":0},null,{"$f":"-C20*'Physical Outputs'!B34","v":0}]
[null,"Hotel/Motel Construction Costs $/sf",{"$f":"'Basic Financial'!B27","v":0},null,{"$f":"-C21*'Physical Outputs'!B35","v":0}]
[null,"Commercial Parking Construction Costs $/space",{"$f":"BF_ParkingCost","v":0},null,{"$f":"-C22*'Physical Outputs'!B59","v":0}]
[null,"Additional Infrastructure enhancement costs",null,null,{"$f":"-'Advanced Financial'!B49","v":0}]
[null,"Parking Construction",null,null,{"$f":"IFERROR((-'Basic Financial'!B67*'Physical Outputs'!B56*(SUM('Physical Outputs'!B45:B51)/'Physical Outputs'!B53))+(-'Basic Financial'!B68*'Physical Outputs'!B57*(SUM('Physical Outputs'!B45:B51)/'Physical Outputs'!B53))+(-'Basic Financial'!B69*'Physical Outputs'!B58*(SUM('Physical Outputs'!B45:B51)/'Physical Outputs'!B53))+(-'Basic Financial'!B70*'Physical Outputs'!B60*(SUM('Physical Outputs'!B45:B51)/'Physical Outputs'!B53))+(-'Basic Financial'!B28*'Physical Outputs'!B59*(SUM('Physical Outputs'!B45:B51)/'Physical Outputs'!B53)),0)","v":-6399.9999999999982}]
[null,"Water Quality Controls",null,null,{"$f":"-'Green Infrastructure'!C68","v":0}]
[]
[null,"Indirect Costs "]
[null,"impact fees",null,null,{"$f":"-AF_ImpactAddtl+-('Advanced Financial'!B52*'Physical Outputs'!D39)+-('Advanced Financial'!B53*'Physical Outputs'!E39)+-('Advanced Financial'!B54*SUM('Physical Outputs'!B30:B35))","v":-41759.999999999993}]
[null,"building permits",null,null,{"$f":"-'Advanced Financial'!B56","v":0}]
[null,"insurance during construction",null,null,{"$f":"'Advanced Financial'!B58*SUM('Development Costs'!E4:E24)","v":-11287.799999999997}]
[null,"taxes during construction (% raw land)",null,null,{"$f":"-'Advanced Financial'!B57*'Basic Financial'!C31","v":-1800}]
[]
["Developer Fee",null,null,null,{"$f":"'Advanced Financial'!B59*SUM(E12:E31)","v":0}]
[]
["Contingency",null,null,null,{"$f":"'Advanced Financial'!B60*SUM(E12:E24)","v":-44579.999999999993}]
[]
["SUBTOTAL DEVELOPMENT & LAND COSTS",null,null,null,{"$f":"SUM(E4:E35)","v":-1228207.7999999998}]
[]
["Cost Allocation"]
[null,"Development and Land Costs (Excluding Parking)","Development Costs Only (Excluding Parking)","Parking Costs","Total Costs by Use"]
[{"$f":"'Physical Inputs'!A76","v":"Residential ◊"},{"$f":"E15+((SUM(E$4:E$8,E$12:E$14,E$23,E$25,E$28:E$35))*(PI_ResPct))","v":-1221807.7999999998},{"$f":"E15+((SUM(E$4:E$7,E$12:E$14,E$23,E$25,E$28:E$35))*(PI_ResPct))","v":-1041807.7999999998},{"$f":"IFERROR((E$24-D$48)*('Physical Outputs'!B45/SUM('Physical Outputs'!B$45:B$51)),0)","v":-6399.9999999999982},{"$f":"B41+D41","v":-1228207.7999999998},{"$f":"IFERROR(E41/$E$49,0)","v":1}]
[{"$f":"'Physical Inputs'!A77","v":"Retail ◊"},{"$f":"E16+((SUM(E$4:E$8,E$12:E$14,E$23,E$25,E$28:E$35))*(PI_RetPct))","v":0},{"$f":"E16+((SUM(E$4:E$7,E$12:E$14,E$23,E$25,E$28:E$35))*(PI_RetPct))","v":0},{"$f":"IFERROR((E$24-D$48)*('Physical Outputs'!B46/SUM('Physical Outputs'!B$45:B$51)),0)","v":0},{"$f":"B42+D42","v":0},0]
[{"$f":"'Physical Inputs'!A78","v":"Office ◊"},{"$f":"E17+((SUM(E$4:E$8,E$12:E$14,E$23,E$25,E$28:E$35))*(PI_OffPct))","v":0},{"$f":"E17+((SUM(E$4:E$7,E$12:E$14,E$23,E$25,E$28:E$35))*(PI_OffPct))","v":0},{"$f":"IFERROR((E$24-D$48)*('Physical Outputs'!B47/SUM('Physical Outputs'!B$45:B$51)),0)","v":0},0,0]
[{"$f":"'Physical Inputs'!A79","v":"Industrial ◊"},{"$f":"E18+((SUM(E$4:E$8,E$12:E$14,E$23,E$25,E$28:E$35))*(PI_IndPct))","v":0},0,{"$f":"IFERROR((E$24-D$48)*('Physical Outputs'!B48/SUM('Physical Outputs'!B$45:B$51)),0)","v":0},0,0]
[{"$f":"'Physical Inputs'!A80","v":"Public"},{"$f":"E19+((SUM(E$4:E$8,E$12:E$14,E$23,E$25,E$28:E$35))*(PI_PubPct))","v":0},0,{"$f":"IFERROR((E$24-D$48)*('Physical Outputs'!B49/SUM('Physical Outputs'!B$45:B$51)),0)","v":0},0,0]
[{"$f":"'Physical Inputs'!A81","v":"Educational"},{"$f":"E20+((SUM(E$4:E$8,E$12:E$14,E$23,E$25,E$28:E$35))*(PI_EduPct))","v":0},0,{"$f":"IFERROR((E$24-D$48)*('Physical Outputs'!B50/SUM('Physical Outputs'!B$45:B$51)),0)","v":0},0,0]
[{"$f":"'Physical Inputs'!A82","v":"Hotel/Motel ◊"},{"$f":"E21+((SUM(E$4:E$8,E$12:E$14,E$23,E$25,E$28:E$35))*(PI_HotelPct))","v":0},0,{"$f":"IFERROR((E$24-D$48)*('Physical Outputs'!B51/SUM('Physical Outputs'!B$45:B$51)),0)","v":0},0,0]
["Commercial Parking",{"$f":"((SUM(E$4:E$8,E$12:E$14,E$23,E$25,E$28:E$35))*(PI_ParkingPct))","v":0},0,{"$f":"-'Physical Outputs'!B52*BF_ParkingCost","v":0},0,0]
["Total",{"$f":"SUM(B41:B48)","v":-1221807.7999999998},{"$f":"SUM(C41:C48)","v":-1041807.7999999998},{"$f":"SUM(D41:D48)","v":-6399.9999999999982},{"$f":"SUM(E41:E48)","v":-1228207.7999999998}]

{"sheet":"Scenario Spreadsheet","index":29,"n_rows":7,"n_cols":115,"rows_kept":7,"cut":false,"hidden":true,"merged":[[2,84,2,104],[2,52,2,56],[2,105,2,114],[2,57,2,64],[2,65,2,69],[2,70,2,73],[2,79,2,80],[2,81,2,83],[2,47,2,51],[1,0,2,0],[2,1,2,7],[2,17,2,21],[2,22,2,26],[2,8,2,16],[2,27,2,28],[2,29,2,30],[2,32,2,36],[2,37,2,41],[2,42,2,46]]}
[]
["Outputs for Envision Tomorrow Scenario Spreadsheet",null,null,null,null,null,null,null,null,null,null,null,null,null,null,null,null,null,null,null,null,null,null,null,null,null,null,null,null,null,null,null,null,null,null," "]
[null,null,null,null,null,null,null,null,{"$f":"\"Building \"&'Metric Translation'!B9&\" Mix (%)\"","v":"Building Square Footage Mix (%)"},null,null,null,null,null,null,null,null,"Residential",null,null,null,null,"Household",null,null,null,null,"Residential Rent",null,"Residential Sales Price",null,"Employment","Retail",null,null,null,null,"Office",null,null,null,null,"Industrial",null,null,null,null,"Public / Civic",null,null,null,null,"Educational",null,null,null,null,"Hotel / Hospitality",null,null,null,null,null,null,null,"Commercial Parking",null,null,null,null,"Parking",null,null,null,"Land Cost","Project Value",{"$f":"'Metric Translation'!B22","v":"Property Tax"},{"$f":"'Metric Translation'!B23","v":"Fees / SDCs"},"Subsidy","Return",null,"Rent Curve",null,null,"Stormwater/ Green Infrastructure/ Water Quality",null,null,null,null,null,null,null,null,null,null,null,null,null,null,null,null,null,null,null,null,"Trip Generation"]
["Building Name","Lot Size","Building Lot Coverage","Landscaping Lot Coverage","Parking Lot Coverage","Height (Stories)","Floor Area Ratio (FAR)",{"$f":"\"Total Bldg \"&'Metric Translation'!B9","v":"Total Bldg Square Footage"},"Residential","Retail","Office","Industrial","Public/Civic","Educational","Hotel / Hospitality","Commercial Parking","Internal / Structured Parking",{"$f":"\"Residential Gross \"&'Metric Translation'!B5","v":"Residential Gross sf"},{"$f":"\"Residential Net \"&'Metric Translation'!B5","v":"Residential Net sf"},{"$f":"\"Net \"&'Metric Translation'!B5&\" per Unit\"","v":"Net sf per Unit"},{"$f":"\"Gross \"&'Metric Translation'!B5&\" per Unit\"","v":"Gross sf per Unit"},{"$f":"\"Dwelling Units / \"&'Metric Translation'!B10","v":"Dwelling Units / Acre"},"Type of Housing","Percent Renter","Percent Owner","Percent Affordable","Estimated Household Income",{"$f":"\"Rent / \"&'Metric Translation'!B5","v":"Rent / sf"},"Avg Rent (/Mo.)",{"$f":"\"Sales Price /\"&'Metric Translation'!B5","v":"Sales Price /sf"},"Avg Sales Price",{"$f":"\"Total Jobs / \"&'Metric Translation'!B10","v":"Total Jobs / Acre"},{"$f":"\"Retail Gross \"&'Metric Translation'!B5","v":"Retail Gross sf"},{"$f":"\"Retail Net \"&'Metric Translation'!B5","v":"Retail Net sf"},{"$f":"\"Retail Lease Rate / \"&'Metric Translation'!B5","v":"Retail Lease Rate / sf"},"Space per  Employee",{"$f":"\"Retail Employees / \"&'Metric Translation'!B10","v":"Retail Employees / Acre"},{"$f":"\"Office Gross \"&'Metric Translation'!B5","v":"Office Gross sf"},{"$f":"\"Office Net \"&'Metric Translation'!B5","v":"Office Net sf"},{"$f":"\"Office Lease Rate /\"&'Metric Translation'!B5","v":"Office Lease Rate /sf"},"Space per Employee",{"$f":"\"Office Employees / \"&'Metric Translation'!B10","v":"Office Employees / Acre"},{"$f":"\"Industrial Gross \"&'Metric Translation'!$B$5","v":"Industrial Gross sf"},{"$f":"\"Industrial Net \"&'Metric Translation'!$B$5","v":"Industrial Net sf"},{"$f":"\"Industrial Lease Rate /\"&'Metric Translation'!$B$5","v":"Industrial Lease Rate /sf"},"Space per Employee",{"$f":"\"Industrial Employees / \"&'Metric Translation'!$B$10","v":"Industrial Employees / Acre"},{"$f":"\"Public / Civic Gross \"&'Metric Translation'!$B$5","v":"Public / Civic Gross sf"},{"$f":"\"Public / Civic Net \"&'Metric Translation'!$B$5","v":"Public / Civic Net sf"},{"$f":"\"Public / Civic Lease Rate /\"&'Metric Translation'!$B$5","v":"Public / Civic Lease Rate /sf"},"Space per Employee",{"$f":"\"Public / Civic Employees / \"&'Metric Translation'!$B$10","v":"Public / Civic Employees / Acre"},{"$f":"\"Educational Gross \"&'Metric Translation'!$B$5","v":"Educational Gross sf"},{"$f":"\"Educational Net \"&'Metric Translation'!$B$5","v":"Educational Net sf"},{"$f":"\"Educational Lease Rate /\"&'Metric Translation'!$B$5","v":"Educational Lease Rate /sf"},"Space per Employee",{"$f":"\"Educational Employees / \"&'Metric Translation'!$B$10","v":"Educational Employees / Acre"},{"$f":"\"Hotel Gross \"&'Metric Translation'!$B$5","v":"Hotel Gross sf"},{"$f":"\"Hotel Net \"&'Metric Translation'!$B$5","v":"Hotel Net sf"},"Hospitality Nightly Rate (per room)","Space per Employee",{"$f":"\"Hospitality Employees / \"&'Metric Translation'!$B$10","v":"Hospitality Employees / Acre"},"Net Space per Hotel Room","Gross Space per Hotel Room",{"$f":"\"Hotel Rooms / \"&'Metric Translation'!$B$10","v":"Hotel Rooms / Acre"},{"$f":"\"Commercial Parking Gross \"&'Metric Translation'!$B$5","v":"Commercial Parking Gross sf"},{"$f":"\"Commercial Parking Net \"&'Metric Translation'!$B$5","v":"Commercial Parking Net sf"},"Parking Hourly Rate (per space)","Space per Employee",{"$f":"\"Shared Parking Employees / \"&'Metric Translation'!$B$10","v":"Shared Parking Employees / Acre"},"Parking Spaces",{"$f":"\"Parking \"&'Metric Translation'!$B$5","v":"Parking sf"},{"$f":"\"Internal / Structured Parking \"&'Metric Translation'!$B$5","v":"Internal / Structured Parking sf"},"Parking Cost",{"$f":"\"Land Cost (per \"&'Metric Translation'!$B$5&\")\"","v":"Land Cost (per sf)"},"Total Project Value",{"$f":"\"Annual \"&'Metric Translation'!B22&\" Revenue (Year 1)\"","v":"Annual Property Tax Revenue (Year 1)"},{"$f":"\"Total \"&'Metric Translation'!B23","v":"Total Fees / SDCs"},"Subsidy","Internal Rate of Return (Rental)","Project Return (Owner)","Y-Intercept","Slope","Product Type","Green Roof (Sq Ft)","Green Roof Efficiency","Green Roof Water Volume (gal)","Biofiltration  (Sq Ft)","Biofiltration Efficiency","Biofiltration Water Volume (gal)","Green Roof Water Harvesting (Sq Ft)","Green Roof Water Harvesting Efficiency","Rainwater Harvesting (Sq Ft)","Rainwater Harvesting Efficiency","Rainwater Harvesting Volume (gal)","Required Water Quality Volume (gal)","Conventional Facility Water Quality Volume (gal)","Total Suspended Solids Load (lbs)","Total Nitrogen Load (lbs)","Total Lead Load (lbs)","Total F. Coli Load (billion colonies)","Total Suspended Solids Reduction (lbs)","Total Nitrogen Reduction (lbs)","Total Lead Reduction (lbs)","Total F. Coli Reduction (billion colonies)","EPA MXD Daily Residential Trips","EPA MXD Daily Retail Trips","EPA MXD Daily Office/Public Trips","EPA MXD Daily Education Trips","EPA MXD Daily Other Trips","EPA MXD Daily Residential VMT","EPA MXD Daily Retail VMT","EPA MXD Daily Office/Public VMT","EPA MXD Daily Education VMT","EPA MXD Daily Other VMT"]
[{"$f":"'Physical Inputs'!B21","v":"Brampton - New Build Duplex"},{"$f":"'Physical Inputs'!B34","v":4500},{"$f":"'Physical Outputs'!C21/'Physical Inputs'!B34","v":0.35555555555555546},{"$f":"'Physical Outputs'!C22/'Physical Inputs'!B34","v":0.50444444444444458},{"$f":"'Physical Outputs'!C23/'Physical Inputs'!B34","v":0.13999999999999999},{"$f":"'Physical Inputs'!B37","v":2},{"$f":"'Physical Outputs'!B39/'Physical Inputs'!B34","v":0.71111111111111092},{"$f":"'Physical Outputs'!B39","v":3199.9999999999991},{"$f":"'Physical Outputs'!B29/'Physical Outputs'!B39","v":1},{"$f":"'Physical Outputs'!B30/'Physical Outputs'!B39","v":0},{"$f":"'Physical Outputs'!B31/'Physical Outputs'!B39","v":0},{"$f":"'Physical Outputs'!B32/'Physical Outputs'!B39","v":0},{"$f":"'Physical Outputs'!B33/'Physical Outputs'!B39","v":0},{"$f":"'Physical Outputs'!B34/'Physical Outputs'!B39","v":0},{"$f":"'Physical Outputs'!B35/'Physical Outputs'!B39","v":0},{"$f":"'Physical Outputs'!B36/'Physical Outputs'!B39","v":0},{"$f":"('Physical Outputs'!B37+'Physical Outputs'!B38)/'Physical Outputs'!B39","v":0},{"$f":"I5*H5","v":3199.9999999999991},{"$f":"'Physical Outputs'!C29","v":3199.9999999999991},{"$f":"IF('Physical Outputs'!C29=0,0,('Physical Outputs'!C29/'Physical Outputs'!D29))","v":1600},{"$f":"IF('Physical Outputs'!B29=0,0,('Physical Outputs'!B29/'Physical Outputs'!D29))","v":1600},{"$f":"'Physical Outputs'!F39","v":19.359999999999992},{"$f":"IF(R5=0,\"\",IF('Physical Inputs'!A167=\"Single Family\",\"SF\",IF('Physical Inputs'!A167=\"Multifamily\",\"MF\",IF('Physical Inputs'!A167=\"Townhome\",\"TH\",IF('Physical Inputs'!A167=\"Mobile Home\",\"MH\",IF('Physical Inputs'!A167=\"None\",\"\"))))))","v":"TH"},{"$f":"IF('Physical Inputs'!B42=\"Owner\",0,IF('Physical Inputs'!B42=\"Renter\",1,IF('Physical Inputs'!B42=\"None\",0)))","v":0},{"$f":"IF(X5=\"\",0,1-X5)","v":1},{"$f":"'Physical Inputs'!C55","v":0},{"$f":"IF(X5=1,AC5*12*3,IF(X5=0,AE5*0.006*12*3,IF(OR(X5>0,X5<1),AVERAGE(AC5*12*3,AE5*0.006*12*3))))","v":158824.80000000002},{"$f":"IF(RentalPct>0,'Basic Financial'!B52,0)","v":0},{"$f":"T5*AB5","v":0},{"$f":"IF(Y5>0,'Basic Financial'!B55,0)","v":459.5625},{"$f":"AD5*T5","v":735300},{"$f":"'Physical Outputs'!G39","v":0},{"$f":"J5*H5","v":0},{"$f":"'Physical Outputs'!C30","v":0},{"$f":"BF_RetRent","v":18},{"$f":"'Physical Inputs'!B65","v":945},{"$f":"IF(AJ5=0,0,AG5/AJ5)","v":0},{"$f":"K5*H5","v":0},{"$f":"'Physical Outputs'!C31","v":0},{"$f":"BF_OffRent","v":22},{"$f":"'Physical Inputs'!B66","v":387},{"$f":"IF(AO5=0,0,AL5/AO5)","v":0},{"$f":"L5*$H$5","v":0},{"$f":"'Physical Outputs'!C32","v":0},{"$f":"BF_IndRent","v":12},{"$f":"'Physical Inputs'!B67","v":1730},{"$f":"IF(AT5=0,0,AQ5/AT5)","v":0},{"$f":"O5*$H$5","v":0},{"$f":"'Physical Outputs'!C33","v":0},{"$f":"BF_PubRent","v":14},{"$f":"'Physical Inputs'!B68","v":746},{"$f":"IF(AY5=0,0,AV5/AY5)","v":0},{"$f":"N5*$H$5","v":0},{"$f":"'Physical Outputs'!C34","v":0},{"$f":"BF_EduRent","v":14},{"$f":"'Physical Inputs'!B69","v":767},{"$f":"IF(BD5=0,0,BA5/BD5)","v":0},{"$f":"O5*$H$5","v":0},{"$f":"'Physical Outputs'!C35","v":0},{"$f":"BF_HotelRent","v":150},{"$f":"'Physical Inputs'!B70","v":1317},{"$f":"'Physical Outputs'!F35","v":0},{"$f":"IF('Physical Outputs'!C35=0,0,('Physical Outputs'!C35/'Physical Outputs'!D35))","v":0},{"$f":"IF('Physical Outputs'!B35=0,0,('Physical Outputs'!B35/'Physical Outputs'!D35))","v":0},{"$f":"IF(BL5=0,0,BF5/BL5)","v":0},{"$f":"P5*$H$5","v":0},{"$f":"'Physical Outputs'!C36","v":0},{"$f":"BF_ParkingRent","v":4},{"$f":"'Physical Inputs'!B72","v":20000},{"$f":"'Physical Outputs'!E36","v":0},{"$f":"'Physical Outputs'!B53","v":1.9999999999999993},{"$f":"'Physical Outputs'!C53","v":629.99999999999977},{"$f":"SUM('Physical Outputs'!B37:B38)","v":0},{"$f":"-'Basic Financial'!B75","v":6399.9999999999982},{"$f":"'Basic Financial'!B31","v":40},{"$f":"-'Basic Financial'!B78","v":1228207.7999999998},{"$f":"'Mixed-Use Summary'!C95+'Residential Owner'!E54","v":14705.999999999996},{"$f":"-'Development Costs'!E28","v":41759.999999999993},{"$f":"IF('Basic Financial'!B34>0,'Basic Financial'!B34,'Basic Financial'!B35)","v":0},{"$f":"'Mixed-Use Summary'!P6","v":0},{"$f":"'Mixed-Use Summary'!V5","v":0.19735438905370878},{"$f":"INTERCEPT('ROI Scenario'!B147:B148,'ROI Scenario'!A147:A148)","v":0.80130000000000479},{"$f":"LINEST('ROI Scenario'!B147:B148,'ROI Scenario'!A147:A148)","v":0.25142979999999998},{"$f":"RS_Seek","v":"Residential Rental"},{"$f":"IF('Physical Inputs'!B22=\"Metric\",\"#N/A\",GI_Green_roof_sf)","v":0},{"$f":"IF('Physical Inputs'!B22=\"Metric\",\"#N/A\",IF(GreenRoof<=0,0,GI_Green_roof_Eff))","v":0},{"$f":"IF('Physical Inputs'!B22=\"Metric\",\"#N/A\",GI_Green_roof_capture_volume)","v":0},{"$f":"IF('Physical Inputs'!B22=\"Metric\",\"#N/A\",GI_Biofiltration_sf+GI_Rain_gardens_sf)","v":0},{"$f":"IF('Physical Inputs'!B22=\"Metric\",\"#N/A\",IF(Biofiltration<=0,0,GI_Biofiltration_eff*GI_Biofiltration_sf/(GI_Biofiltration_sf+GI_Rain_gardens_sf)+GI_Rain_garden_eff*GI_Rain_gardens_sf/(GI_Biofiltration_sf+GI_Rain_gardens_sf)))","v":0},{"$f":"IF('Physical Inputs'!B22=\"Metric\",\"#N/A\",GI_Biofiltration_volume+GI_Raingarden_volume)","v":0},{"$f":"IF('Physical Inputs'!B22=\"Metric\",\"#N/A\",GI_Green_roof_water_harvesting_area)","v":0},{"$f":"IF('Physical Inputs'!B22=\"Metric\",\"#N/A\",IF(GreenRoofHarvesting<=0,0,GI_Green_roof_water_harvesting_eff))","v":0},{"$f":"IF('Physical Inputs'!B22=\"Metric\",\"#N/A\",GI_Rainwater_harvesting_area)","v":0},{"$f":"IF('Physical Inputs'!B22=\"Metric\",\"#N/A\",IF(WaterHarvesting<=0,0,GI_Rainwater_harvesting_eff))","v":0},{"$f":"IF('Physical Inputs'!B22=\"Metric\",\"#N/A\",GI_Green_roof_rainwater_harvesting_volume+GI_Rainwater_harvesting_volume)","v":0},{"$f":"IF('Physical Inputs'!B22=\"Metric\",\"#N/A\",GI_Req_WCV)","v":1391.28},{"$f":"IF('Physical Inputs'!B22=\"Metric\",\"#N/A\",GI_Conventional_volume)","v":0},{"$f":"GI_TSS_load","v":113.35296904132231},{"$f":"GI_TN_load","v":1.8351087933884298},{"$f":"GI_TL_load","v":5.4338188595041328E-3},{"$f":"GI_fColi_load","v":2250.6111190082647},{"$f":"GI_TSS_reduction","v":0},{"$f":"GI_TN_reduction","v":0},{"$f":"GI_TL_reduction","v":0},{"$f":"GI_Fcoli_reduction","v":0},{"$f":"IF('Physical Inputs'!B22=\"Metric\",\"#N/A\",'Trip Generation'!B12*(1-'Trip Generation'!$D$186))","v":13.022589091894332},{"$f":"IF('Physical Inputs'!B22=\"Metric\",\"#N/A\",'Trip Generation'!B13*(1-'Trip Generation'!$D$186))","v":0},{"$f":"IF('Physical Inputs'!B22=\"Metric\",\"#N/A\",'Trip Generation'!B14*(1-'Trip Generation'!$D$186))","v":0},{"$f":"IF('Physical Inputs'!B22=\"Metric\",\"#N/A\",'Trip Generation'!B15*(1-'Trip Generation'!$D$186))","v":0},{"$f":"IF('Physical Inputs'!B22=\"Metric\",\"#N/A\",'Trip Generation'!B16*(1-'Trip Generation'!$D$186))","v":0},{"$f":"IF('Physical Inputs'!B22=\"Metric\",\"#N/A\",'Trip Generation'!$E212)","v":36.960752805935947},{"$f":"IF('Physical Inputs'!B22=\"Metric\",\"#N/A\",'Trip Generation'!$E213)","v":0},{"$f":"IF('Physical Inputs'!B22=\"Metric\",\"#N/A\",'Trip Generation'!$E214)","v":0},{"$f":"IF('Physical Inputs'!B22=\"Metric\",\"#N/A\",'Trip Generation'!$E215)","v":0},{"$f":"IF('Physical Inputs'!B22=\"Metric\",\"#N/A\",'Trip Generation'!$E216)","v":0}]
[]
[null,null,null,null,null,null,null,null,null,null,null,null,null,null,null,null,null,null,null,"Averages market rate and affordable unit size","Averages market rate and affordable unit size"]

{"sheet":"Metric Translation","index":30,"n_rows":107,"n_cols":4,"rows_kept":107,"cut":false,"hidden":true,"merged":[[30,0,30,3]]}
[]
["Area"]
["Metric conversion",9.2902999999999999E-2]
["Foot Label (plural)",{"$f":"IF('Physical Inputs'!B22=\"Metric\",\"square metres\",\"square feet\")","v":"square feet"}]
["Foot Label (short)",{"$f":"IF('Physical Inputs'!B22=\"Metric\",\"sqm\",\"sf\")","v":"sf"}]
["Foot label (length)",{"$f":"IF('Physical Inputs'!B22=\"Metric\",\"m\",\"ft\")","v":"ft"}]
["Foot Label (plural, capitalized)",{"$f":"IF('Physical Inputs'!B22=\"Metric\",\"Square Metres\",\"Square Feet\")","v":"Square Feet"}]
["Foot Label (singular, capitalized)",{"$f":"IF('Physical Inputs'!B22=\"Metric\",\"Square Metre\",\"Square Foot\")","v":"Square Foot"}]
["Square Footage Label",{"$f":"IF('Physical Inputs'!B22=\"Metric\",\"Square Metreage\",\"Square Footage\")","v":"Square Footage"}]
["Acre Label (singular, capitalized)",{"$f":"IF('Physical Inputs'!B22=\"Metric\",\"Hectare\",\"Acre\")","v":"Acre"}]
["Acre Label (singular)",{"$f":"IF('Physical Inputs'!B22=\"Metric\",\"hectare\",\"acre\")","v":"acre"}]
["Acre Label (plural)",{"$f":"IF('Physical Inputs'!B22=\"Metric\",\"hectares\",\"acres\")","v":"acres"}]
[]
["Value"]
["Currency Label",{"$f":"IF('Physical Inputs'!B23=\"GBP\",\"£\",\"$\")","v":"$"}]
[]
["Height"]
["Story Label",{"$f":"IF('Physical Inputs'!B22=\"Metric\",\"storeys\",\"stories\")","v":"stories"}]
[]
["Advanced Financial"]
["Taxation",{"$f":"IF('Physical Inputs'!B23=\"GBP\",\"Council Taxes\",\"Property Taxes\")","v":"Property Taxes"}]
["Taxation (singular)",{"$f":"IF('Physical Inputs'!B23=\"GBP\",\"Council Tax\",\"Property Tax\")","v":"Property Tax"}]
["Impact Fees",{"$f":"IF('Physical Inputs'!B23=\"GBP\",\"CIL / Fees\",\"Fees / SDCs\")","v":"Fees / SDCs"}]
["Impact per Unit",{"$f":"IF('Physical Inputs'!B23=\"GBP\",\"CIL (per Unit)\",\"Impact Fees (per Unit)\")","v":"Impact Fees (per Unit)"}]
["Impact per Job",{"$f":"IF('Physical Inputs'!B23=\"GBP\",\"CIL (per Job)\",\"Impact Fees (per Job)\")","v":"Impact Fees (per Job)"}]
["Impact per Sqft",{"$f":"IF('Physical Inputs'!B23=\"GBP\",\"CIL (per sqm of Employment Area) ◊\",\"Impact Fees (per sqft of Employment Area) ◊\")","v":"Impact Fees (per sqft of Employment Area) ◊"}]
["Building Permit Fees",{"$f":"IF('Physical Inputs'!$B$23=\"GBP\",\"Planning Obligations (Total for Project)\",\"Building Permit Fees\")","v":"Building Permit Fees"}]
[]
["Additional Impact Fees",{"$f":"IF('Physical Inputs'!B23=\"GBP\",\"Additonal CIL (Total for Project) ◊\",\"Additonal Impact Fees (Total for Project) ◊\")","v":"Additonal Impact Fees (Total for Project) ◊"}]
[]
["Default Values"]
[]
["Average Residential Unit Size",null,"Default US Values","Default UK Values"]
["User-defined Avg. Residential Unit Size ◊",{"$f":"IF('Physical Inputs'!$B$22=\"Metric\",D34,C34)","v":783},783,73]
[]
["Gross Area per Employee by Sector (Average)",null,"Default US Values","Default UK Values"]
["Retail",{"$f":"IF('Physical Inputs'!$B$22=\"Metric\",D37,C37)","v":945},945,{"$f":"C37*$B$3","v":87.793334999999999}]
["Office",{"$f":"IF('Physical Inputs'!$B$22=\"Metric\",D38,C38)","v":387},387,{"$f":"C38*$B$3","v":35.953460999999997}]
["Industrial",{"$f":"IF('Physical Inputs'!$B$22=\"Metric\",D39,C39)","v":1730},1730,160.72219000000001]
["Public",{"$f":"IF('Physical Inputs'!$B$22=\"Metric\",D40,C40)","v":746},746,69.305638000000002]
["Educational",{"$f":"IF('Physical Inputs'!$B$22=\"Metric\",D41,C41)","v":767},767,71.256601000000003]
["Hotel/Motel (Area per Employee)",{"$f":"IF('Physical Inputs'!$B$22=\"Metric\",D42,C42)","v":1317},1317,122.353251]
["Hotel/Motel (Room Size)",{"$f":"IF('Physical Inputs'!$B$22=\"Metric\",D43,C43)","v":400},400,37.161200000000001]
["Commercial Parking",{"$f":"IF('Physical Inputs'!$B$22=\"Metric\",D44,C44)","v":20000},20000,1858.06]
[]
["Parking Stall",null,"Default US Values","Default UK Values"]
["Suburban Perpendicular",{"$f":"IF('Physical Inputs'!$B$22=\"Metric\",D47,C47)","v":400},400,{"$f":"C47*$B$3","v":37.161200000000001}]
["Urban Perpendicular",{"$f":"IF('Physical Inputs'!$B$22=\"Metric\",D48,C48)","v":315},315,{"$f":"C48*$B$3","v":29.264444999999998}]
["Structured",{"$f":"IF('Physical Inputs'!$B$22=\"Metric\",D49,C49)","v":260},260,{"$f":"C49*$B$3","v":24.154779999999999}]
["Mechanical",{"$f":"IF('Physical Inputs'!$B$22=\"Metric\",D50,C50)","v":125},125,{"$f":"C50*$B$3","v":11.612875000000001}]
["Custom",{"$f":"IF('Physical Inputs'!$B$22=\"Metric\",D51,C51)","v":325},325,{"$f":"C51*$B$3","v":30.193474999999999}]
[]
["Construction Costs "]
["Residential",{"$f":"IF('Physical Inputs'!$B$23=\"GBP\",D54,C54)","v":120},120,1208]
["Retail",{"$f":"IF('Physical Inputs'!$B$23=\"GBP\",D55,C55)","v":140},140,1260]
["Office",{"$f":"IF('Physical Inputs'!$B$23=\"GBP\",D56,C56)","v":150},150,1486]
["Industrial",{"$f":"IF('Physical Inputs'!$B$23=\"GBP\",D57,C57)","v":90},90,722]
["Public",{"$f":"IF('Physical Inputs'!$B$23=\"GBP\",D58,C58)","v":150},150,2065]
["Educational",{"$f":"IF('Physical Inputs'!$B$23=\"GBP\",D59,C59)","v":150},150,2065]
["Hotel/Motel",{"$f":"IF('Physical Inputs'!$B$23=\"GBP\",D60,C60)","v":150},150,1606]
["Commercial Parking (Per Space) ◊",{"$f":"IF('Physical Inputs'!$B$23=\"GBP\",D61,C61)","v":20000},20000,10000]
[]
["Land / Site Cost"]
[{"$f":"\"Land and Improvement Cost\"","v":"Land and Improvement Cost"},{"$f":"IF('Physical Inputs'!$B$23=\"GBP\",D64,C64)","v":10},10,100]
[]
["Affordable Rent Target"]
["Area Median Income / Market Rent",{"$f":"IF('Physical Inputs'!$B$23=\"GBP\",D67,C67)","v":60000},60000,{"$f":"D102*D92","v":1177.545525}]
[]
["Residential Rent (Rental) ◊"]
["Monthly Rent per Square Foot / Metre",{"$f":"IF('Physical Inputs'!$B$23=\"GBP\",D70,C70)","v":1.62},1.62,12.95]
[]
["Residential Sale Price (Owner) ◊"]
["Sale Price per Square Foot / Mertre",{"$f":"IF('Physical Inputs'!$B$23=\"GBP\",D73,C73)","v":300},300,2300]
[]
["Commercial Rent per Square Foot (Except Hotel/Motel and Commercial Parking) ◊"]
["Retail",{"$f":"IF('Physical Inputs'!$B$23=\"GBP\",D76,C76)","v":18},18,2]
["Office",{"$f":"IF('Physical Inputs'!$B$23=\"GBP\",D77,C77)","v":22},22,2]
["Industrial",{"$f":"IF('Physical Inputs'!$B$23=\"GBP\",D78,C78)","v":12},12,1.5]
["Public",{"$f":"IF('Physical Inputs'!$B$23=\"GBP\",D79,C79)","v":14},14,2]
["Educational",{"$f":"IF('Physical Inputs'!$B$23=\"GBP\",D80,C80)","v":14},14,2]
["Hotel/Motel",{"$f":"IF('Physical Inputs'!$B$23=\"GBP\",D81,C81)","v":150},150,80]
["Commercial Parking ◊",{"$f":"IF('Physical Inputs'!$B$23=\"GBP\",D82,C82)","v":4},4,2]
[]
["Parking Costs Per Space ◊"]
["Surface",{"$f":"IF('Physical Inputs'!$B$23=\"GBP\",D85,C85)","v":3000},3000,1500]
["Structured (above ground)",{"$f":"IF('Physical Inputs'!$B$23=\"GBP\",D86,C86)","v":15000},15000,10000]
["Underground",{"$f":"IF('Physical Inputs'!$B$23=\"GBP\",D87,C87)","v":35000},35000,20000]
["Internal (Tuck Under or Sandwich)",{"$f":"IF('Physical Inputs'!$B$23=\"GBP\",D88,C88)","v":20000},20000,20000]
["Mechanical",{"$f":"IF('Physical Inputs'!$B$23=\"GBP\",D89,C89)","v":55000},55000,45000]
[]
["Residential Unit Size Estimator ◊"]
["Affordable",{"$f":"IF('Physical Inputs'!$B$22=\"Metric\",D92,C92)","v":975},975,{"$f":"C92*$B$3","v":90.580425000000005}]
["4+ Bedroom",{"$f":"IF('Physical Inputs'!$B$22=\"Metric\",D93,C93)","v":2000},2000,185.80600000000001]
["3 Bedroom",{"$f":"IF('Physical Inputs'!$B$22=\"Metric\",D94,C94)","v":1200},1200,111.4836]
["2 Bedroom",{"$f":"IF('Physical Inputs'!$B$22=\"Metric\",D95,C95)","v":975},975,90.580425000000005]
["1 Bedroom",{"$f":"IF('Physical Inputs'!$B$22=\"Metric\",D96,C96)","v":725},725,67.354675]
["Studio",{"$f":"IF('Physical Inputs'!$B$22=\"Metric\",D97,C97)","v":575},575,53.419224999999997]
[]
["Residential Rent Estimator ◊"]
["4+ Bedroom",{"$f":"IF('Physical Inputs'!$B$23=\"GBP\",D100,C100)","v":1.4},1.4,12]
["3 Bedroom",{"$f":"IF('Physical Inputs'!$B$23=\"GBP\",D101,C101)","v":1.5},1.5,12.5]
["2 Bedroom",{"$f":"IF('Physical Inputs'!$B$23=\"GBP\",D102,C102)","v":1.6},1.6,13]
["1 Bedroom",{"$f":"IF('Physical Inputs'!$B$23=\"GBP\",D103,C103)","v":1.7},1.7,13.5]
["Studio",{"$f":"IF('Physical Inputs'!$B$23=\"GBP\",D104,C104)","v":1.8},1.8,14]
[]
["Yearly Garage Maintenance"]
["Cost per year",{"$f":"IF('Physical Inputs'!$B$23=\"GBP\",D107,C107)","v":800},800,550]

{"sheet":"PRINT_SUMMARY","index":31,"n_rows":63,"n_cols":14,"rows_kept":63,"cut":false,"hidden":true,"merged":[]}
[null,{"$f":"'Physical Inputs'!B21","v":"Brampton - New Build Duplex"}]
[null,{"$f":"'Physical Inputs'!B24","v":"Puget Sound, WA"}]
[]
[]
[null,"BUILDING FORM"]
[null,"Lot area",null,null,{"$f":"PI_SiteArea","v":4500},"sf"]
[null,"Lot area",null,null,{"$f":"'Physical Inputs'!C34","v":0.10330578512396695},"acres"]
[null,"Building Footprint",null,null,{"$f":"PO_BuildingFootprint","v":1599.9999999999995},"sf"]
[null,"Parking Footprint (Adjacent)",null,null,{"$f":"PO_ParkingSf","v":629.99999999999989},"sf"]
[null,"Height",null,null,{"$f":"'Physical Inputs'!B37","v":2},"stories"]
[null,"Floor-area ratio",null,null,{"$f":"'Physical Inputs'!B7","v":0.71111111111111092},"FAR"]
[]
[]
[null,"DEVELOPMENT PROGRAM"]
[null,"Use",null,null,"Gross","Net"]
[null,{"$f":"'Physical Outputs'!A29","v":"Residential"},null,null,{"$f":"'Physical Outputs'!B29","v":3199.9999999999991},{"$f":"'Physical Outputs'!C29","v":3199.9999999999991}]
[null,{"$f":"'Physical Outputs'!A30","v":"Retail"},null,null,{"$f":"'Physical Outputs'!B30","v":0},{"$f":"'Physical Outputs'!C30","v":0}]
[null,{"$f":"'Physical Outputs'!A31","v":"Office"},null,null,{"$f":"'Physical Outputs'!B31","v":0},{"$f":"'Physical Outputs'!C31","v":0}]
[null,{"$f":"'Physical Outputs'!A32","v":"Industrial"},null,null,{"$f":"'Physical Outputs'!B32","v":0},{"$f":"'Physical Outputs'!C32","v":0}]
[null,{"$f":"'Physical Outputs'!A33","v":"Public"},null,null,{"$f":"'Physical Outputs'!B33","v":0},{"$f":"'Physical Outputs'!C33","v":0}]
[null,{"$f":"'Physical Outputs'!A34","v":"Educational"},null,null,{"$f":"'Physical Outputs'!B34","v":0},{"$f":"'Physical Outputs'!C34","v":0}]
[null,{"$f":"'Physical Outputs'!A35","v":"Hotel/Motel"},null,null,{"$f":"'Physical Outputs'!B35","v":0},{"$f":"'Physical Outputs'!C35","v":0}]
[null,{"$f":"'Physical Outputs'!A36","v":"Commercial Parking"},null,null,{"$f":"'Physical Outputs'!B36","v":0},{"$f":"'Physical Outputs'!C36","v":0}]
[null,{"$f":"'Physical Outputs'!A37","v":"Structured Parking"},null,null,{"$f":"'Physical Outputs'!B37","v":0},{"$f":"'Physical Outputs'!C37","v":0}]
[null,{"$f":"'Physical Outputs'!A38","v":"Internal Parking"},null,null,{"$f":"'Physical Outputs'!B38","v":0},{"$f":"'Physical Outputs'!C38","v":0}]
[]
[null,"UNITS AND EMPLOYEES"]
[null,"Housing Units",null,null,{"$f":"'Physical Outputs'!D39","v":1.9999999999999993},{"$f":"IF('Physical Outputs'!F39=0,\"N/A\",'Physical Outputs'!F39)","v":19.359999999999992},"/acre"]
[null,"Average unit size",null,null,{"$f":"IF(F28=\"N/A\",\"N/A\",'Physical Inputs'!B62)","v":1600},"sf"]
[null,"Employees",null,null,{"$f":"'Physical Inputs'!B3","v":0},{"$f":"'Physical Outputs'!G39","v":0},"/acre"]
[]
[null,"PARKING & OPEN SPACE",null,null,null,null,null,null,"RENTS AND SALES PRICES"]
[null,"Residential",null,null,{"$f":"'Physical Outputs'!B45","v":1.9999999999999993},{"$f":"'Physical Inputs'!B76","v":1},"/ per unit",null,"Residential Unit Sales Price",null,null,{"$f":"IF('Physical Inputs'!B42=\"Owner\",'Basic Financial'!D55,\"N/A\")","v":735300},{"$f":"IF('Physical Inputs'!$B$42=\"owner\",'Basic Financial'!B55,\"N/A\")","v":459.5625},"/sf"]
[null,"Retail",null,null,{"$f":"'Physical Outputs'!B46","v":0},{"$f":"'Physical Inputs'!B77","v":0},"/ 1000 sq ft",null,"Residential Unit Rent",null,null,{"$f":"IF('Physical Inputs'!$B$42=\"renter\",'Basic Financial'!E51,\"N/A\")","v":"N/A"},{"$f":"IF('Physical Inputs'!$B$42=\"renter\",BF_AvgRent,\"N/A\")","v":"N/A"},"/sf"]
[null,"Office",null,null,{"$f":"'Physical Outputs'!B47","v":0},{"$f":"'Physical Inputs'!B78","v":0},"/ 1000 sq ft",null,"Retail rent (sf/year)",null,null,{"$f":"IF('Physical Inputs'!B44=0,\"N/A\",'Basic Financial'!B58)","v":"N/A"},"/sf (triple net)"]
[null,"Industrial",null,null,{"$f":"'Physical Outputs'!B48","v":0},{"$f":"'Physical Inputs'!B79","v":0},"/ 1000 sq ft",null,"Office rent (sf/year)",null,null,{"$f":"IF('Physical Inputs'!B46=0,\"N/A\",'Basic Financial'!B59)","v":"N/A"},"/sf (triple net)"]
[null,"Public",null,null,{"$f":"'Physical Outputs'!B49","v":0},{"$f":"'Physical Inputs'!B80","v":0},"/ 1000 sq ft",null,"Industrial (sf/year)",null,null,{"$f":"IF('Physical Inputs'!B47=0,\"N/A\",'Basic Financial'!B60)","v":"N/A"},"/sf (triple net)"]
[null,"Educational",null,null,{"$f":"'Physical Outputs'!B50","v":0},{"$f":"'Physical Inputs'!B81","v":0},"/ 1000 sq ft",null,"Hotel/Motel ($/night)",null,null,{"$f":"IF('Physical Inputs'!B50=0,\"N/A\",'Basic Financial'!B63)","v":"N/A"},"/ room / night"]
[null,"Hotel/Motel",null,null,{"$f":"'Physical Outputs'!B51","v":0},{"$f":"'Physical Inputs'!B82","v":0},"/ per room"]
[null,"Parking Structure",null,null,{"$f":"IF('Physical Inputs'!B85=\"yes\",'Physical Outputs'!B61,0)","v":0}]
[null,"Total parking spaces",null,null,{"$f":"'Physical Outputs'!B53","v":1.9999999999999993}]
[null,"Landscaping and open space area",null,null,{"$f":"'Physical Outputs'!B22","v":0.50444444444444458}]
[]
[null,"CONSTRUCTION COSTS",null,null,null,null,null,null,"FINANCIAL PERFORMANCE"]
[null,"TOTAL COSTS",null,null,{"$f":"E46+E47+E57+E58","v":-1228207.7999999998},null,null,null,"Rental"]
[null,"Land Costs",null,null,{"$f":"'Development Costs'!E8","v":-180000},{"$f":"'Basic Financial'!B31","v":40},"/sf",null,{"$f":"'Mixed-Use Summary'!A5","v":"Cash-on-Cash (After Year 3)"},null,null,null,{"$f":"'Mixed-Use Summary'!P5","v":0}]
[null,"Hard Costs",null,null,{"$f":"SUM(E48:E56)","v":-841599.99999999977},null,null,null,{"$f":"'Mixed-Use Summary'!A6","v":"IRR on Project Cost (Unleveraged Return)"},null,null,null,{"$f":"'Mixed-Use Summary'!P6","v":0}]
[null,"Residential",null,null,{"$f":"'Development Costs'!E15","v":-835199.99999999977},{"$f":"BF_ResCost","v":261},"/sf",null,{"$f":"'Mixed-Use Summary'!A7","v":"IRR on Investor Equity (Leveraged Return Before Tax)"},null,null,null,{"$f":"'Mixed-Use Summary'!P7","v":0}]
[null,"Retail",null,null,{"$f":"'Development Costs'!E16","v":0},{"$f":"BF_RetCost","v":0},"/sf",null,{"$f":"'Mixed-Use Summary'!A8","v":"Debt Service Coverage Ratio (Year 3)"},null,null,null,{"$f":"'Mixed-Use Summary'!P8","v":0}]
[null,"Office",null,null,{"$f":"'Development Costs'!E17","v":0},{"$f":"BF_OffCost","v":0},"/sf",null,"Owner"]
[null,"Industrial",null,null,{"$f":"'Development Costs'!E18","v":0},{"$f":"BF_IndCost","v":0},"/sf",null,{"$f":"'Mixed-Use Summary'!R5","v":"Project Rate of Return"},null,null,null,{"$f":"'Mixed-Use Summary'!U5","v":0.19735438905370878}]
[null,"Public",null,null,{"$f":"'Development Costs'!E19","v":0},{"$f":"BF_PubCost","v":0},"/sf",null,{"$f":"'Mixed-Use Summary'!R6","v":"Return to Equity"},null,null,null,{"$f":"'Mixed-Use Summary'!U6","v":0.98677194526854406}]
[null,"Educational",null,null,{"$f":"'Development Costs'!E20","v":0},{"$f":"BF_EduCost","v":0},"/sf",null,"Subsidy"]
[null,"Hotel/Motel",null,null,{"$f":"'Development Costs'!E21","v":0},{"$f":"BF_HotelCost","v":0},"/sf",null,"Subsidy Amount",null,null,null,{"$f":"'Basic Financial'!B35","v":0}]
[null,"Commercial Parking",null,null,{"$f":"'Development Costs'!E22","v":0},{"$f":"BF_ParkingCost","v":0},"/space",null,"% of Project Costs",null,null,null,{"$f":"'Basic Financial'!C35","v":0}]
[null,"Other Parking",null,null,{"$f":"'Development Costs'!E24","v":-6399.9999999999982}]
[null,"Soft Costs",null,null,{"$f":"SUM('Development Costs'!E4:E7,'Development Costs'!E28:E35)","v":-156607.79999999999}]
[null,"Other Costs",null,null,{"$f":"SUM(E59:E63)","v":-50000}]
[null,"Demolition Costs",null,null,{"$f":"'Development Costs'!E12","v":-50000}]
[null,"Site Development Costs",null,null,{"$f":"'Development Costs'!E13","v":0}]
[null,"Brownfield Remediation Costs",null,null,{"$f":"'Development Costs'!E14","v":0}]
[null,"Water Quality Controls",null,null,{"$f":"'Development Costs'!E25","v":0}]
[null,"Additional Infrastructure",null,null,{"$f":"'Development Costs'!E23","v":0}]

{"sheet":"ChangeLog","index":32,"n_rows":48,"n_cols":6,"rows_kept":48,"cut":false,"hidden":true,"merged":[]}
["Date","Append_Name","Version","ET Spreadsheet","Tab","Note"]
["09/05/2013","090513","3.2.1","3.2.1","Physical Inputs","Changed gross-to-net to net-to-gross"]
["09/24/2013","092413","3.2.2","3.2.1","Physical Inputs","added setback calculator"]
["09/26/2013","092613","3.2.3","3.2.1","Physical Inputs, Building Envelope Calculator","Updated tool tips/formatting.  Adjusted setback calculator.  Added VBA code to goal seek on additional landscaping.  User now sees setback landscaping and additional landscaping as one, goal seeking toward a user-input target.  Re-formatted building envelope calculator."]
["09/28/2013","092813","3.2.3.1","3.2.1","Building Envelope Calculator","Fixed issue with commercial parking area"]
["10/03/2013","100313","3.3.3.2","3.2.1","Back end code","Added macro requirement splash tab"]
["10/11/2013","101113","3.3.3.3","3.2.1","Close Workbook Macro, Building Envelope Calculator","Fixed internal parking calcs and removed autosave in macro"]
["01/27/14","012714","3.4.0","3.4.0","Green Infrastructure","Added green infrastructure functionality"]
["02/04/2014","v3.4.1","3.4.1","3.4.0","Green Infrastructure","Repaired errors."]
["2/19/2014","v3.4.2","3.4.2","3.4.0","Trip Generation","added trip gen model"]
["2/27/2014","v3.4.3","3.4.3","3.4.2","Trip Generation","Updated average trip lengths based on reid ewings research"]
["3/19/2014","v3.4.4","3.4.4","3.4.2","Advanced Financial","set default value for cell E76 to 0"]
["3/19/2014","v3.4.4","3.4.4","3.4.2","Advanced Financial","Change loan term default values.  70% max loan to value, and 25 year period."]
["3/19/2014","v3.4.4","3.4.4","3.4.2","individual pro forma tabs (Res Rental, Retail etc)","Changed loan value cell to be equal to project costs rather than market value when market value is lower than project costs"]
["4/24/2014","v3.4.4","3.4.4","3.4.1","Basic Financial, Physical Inputs, Physical Outputs, Advanced Financial","Added input calculations, resized dashboard."]
["7/02/2014","v3.5.0","3.5.0","3.5.0","Basic Financial, Basic Physical, Physcial Outputs","Added macros for automatic goal seeking and balancing; included structured parking in FAR output."]
["12/1/14","v3.6.0","3.6.0","3.6.0","Scenario Spreadsheet, print summary, development costs","Added several trackbacks for scenario spreadsheet, broke out internal/structured parking, fixed errors in print summary tab and development costs tab"]
["12/09/14","v3.6.1","3.6.1","3.6.1","advanced financial, development costs","added SDC per square foot entry"]
["12/11/14","v3.6.2b","3.6.2 Beta","3.6.1","ROI Scenario","Added ROI scenario capability.  Fixed small issue with commercial parking"]
["1/14/15","v3.6.2b.2","3.6.2 Beta","3.6.1","ROI Scenario, scenario spreadsheet","added slope and intercept to scenario spreadsheet tab, cleaned up ROI scenario tab."]
["1/22/15","v3.6.2b.2","3.6.2 Beta","3.6.1","Basic Financial","Added 5 year property tax revenue and impact fee revenue adjacent to subsidy cells so users can see how much revenue the building is expected to generate when adjusting subsidy amount"]
["1/22/15","v3.7.0","3.7.0","3.7.0","Scenario Spreadsheet","Added Property Tax and Impact Fee/SDC output columns to link into Scenario Spreadsheet and produce additional indicators"]
["1/28/15","v3.7.1","3.7.1","3.7.0","Proforma tabs, basic financial","Corrected property tax issues, fixed subsidy checks, added res owner property tax"]
["2/2/15","v3.7.2","3.7.2","3.7.0","ROI Scenario","added ability to test rent sensitivity to a range of factors"]
["2/25/15","v3.7.3","3.7.3","3.7.0","Import ROI macro","Fixed land cost import issue"]
["4/29/15","v3.7.4","3.7.4","3.7.0","RentCurveSave macro","Cleaned up old named ranges.  Added auto ROI balance in land value."]
["5/29/15","v3.7.5","3.7.5","3.7.0","Macros","Removed auto ROI balance"]
["7/10/15","v3.7.6","v3.7.6","3.7.0","Basic Financial","Added Residual Land Value Macro"]
["7/14/15","v3.7.7","v3.7.7","3.7.0","Physical Outputs","Fixed error in structured parking calculation"]
["081315","v3.8.0","v3.8.0","3.7.0","Building Envelope Calculator, physical outputs","Removed landscaping macro and added post-underbuild adjustment"]
["08/25/15","v3.8.1","v3.8.1","3.7.0","Prototype Modeler","Added capability for procedural sketchup modeling"]
["9/14/15","v3.8.2","v3.8.2","3.7.0","all","added international calcs"]
["9/25/15","v3.8.3","v3.8.3","3.7.0","all","updated site area charts to include gross to net,"]
["11/19/15","v3.83","v3.8.3","3.7.0","building envelope calc"," corrected issue with internal parking in building envelope calc"]
["07/06/17","v3.84","v3.84","3.7.0","physical inputs","updated semi-detached/terraced to semi-detached/townhome"]
["10/29/18","v4.0.0 Beta","4.0.0 Beta","3.7.0","physical inputs, basic financial, input calculators, development costs, prototype modeler","Made cleanup and reporting upgrades, fixed commercial parking cost issues not showing up in development costs.  Added macros.  Removed input calculators tab"]
["11/03/18","v4.0.0 Beta","4.0.0 Beta","3.7.0","physical inputs","fixed unit mix calculator - there was a locked cell reference in error"]
["11/15/18","v4.0.1","v4.0.1","3.7.0","n/a","Reversioned to base"]
["11/28/18","v4.0.2","v4.0.2","3.7.0","physical inputs","added gross/net for hotel rooms"]
["2/14/19","v4.0.3","v4.0.3","3.7.0","development costs","fixed bug where parking costs were being subtracted from commercial parking construction costs and print summary tab"]
["8/26/19","v4.0.4","v4.0.4","3.7.0","Physical Inputs","adjusted ground floor retail assumption to better respond to tuck under parking"]
["1/24/19","v4.04","v4.04","3.7.0","Prototype Modeler","Remove sidewalks on side and rear lot lines"]
["Latest:",{"$f":"INDEX(B2:B42, COUNTA(B2:B42), 1)","v":"v4.04"},{"$f":"INDEX(C2:C42, COUNTA(C2:C42), 1)","v":"v4.04"},{"$f":"INDEX(A2:A42, COUNTA(D2:D42), 1)","v":"1/24/19"}]
[]
[]
[]
["add rule of 100 to return metrics"]
["Need sales price (for for-sale res), 3 year stablized value, and project cost"]